{"text_format":"1","workbook":"xlsx","n_sheets":53,"sheets":["Qualité-prix","Coût d'un compte","rachat","Banque de Bretagne","Barclays","BNP Paribas","Caisse Epargne IDF","Caisse Epargne Rhone Alpes","Caisse Epargne de Bretagne","C. I. C","Crédit Agricole IDF","Crédit Agricole Normandie","Crédit Agricole Provence Alpes","Caisse Epargne côte d'azur","Banque Populaire des Alpes","Banque Populaire du Nord","Crédit du Nord","Crédit Mutuel IDF","Crédit Mutuel Océan","Crédit Mutuel Sud Est","HSBC","L.C.L ","Société Générale","Crédit Foncier","Limites de l'argument taux","1 L'argument offre assurance","Argument modularité4","2 L'argument crédit réactif","Exemple 1 Vente accord avec mod","Argument modularité7","Exemple 2 Vente accord avec mod","Exemple Vente Transfert de prêt","Argument PREMIUM","Assurance individuelle3","Exemple 1 Avantages INV","Exemple 2 Avantages Garantie","Report d'échéances","Seul, le taux ne suffit pas","Un gain sur ass de prêt","Exo IRA","Argument Exo IRA","Crédit du Nord Région Nord","Crédit Mutuel Nord Europe","La Banque Postale","Arguments transfert de prêt","Le marché de la modularité","Exemple 3 Vente PREMIUM","Exemple Report d'échéances","Avantages Garantie forfaitaire","Crédit Immobilier de France IDF","Crédit Agricole PACA","Synthèse","calculs"],"not_rendered":{"charts":0,"images":33,"macros":1,"external_links":0,"defined_names":33,"comments":0,"pivot_tables":0},"unopened":[],"bounds":{"document_bytes":16777216,"sheet_cells":100000,"rows_first":2000,"rows_last":500,"rows_between":2000,"halvings":0,"cell_chars":16384,"cell_head_chars":4096},"cells_cut":0,"cells_raw":0,"read":"whole","date_system":"1900"}

{"sheet":"Qualité-prix","index":0,"n_rows":42,"n_cols":8,"rows_kept":42,"cut":false,"hidden":true,"merged":[[34,1,35,1],[36,1,37,1],[36,3,37,3],[36,4,37,4],[40,1,40,7],[34,3,35,3],[34,4,35,4],[34,5,35,5],[34,6,35,6],[34,7,35,7],[41,5,41,7],[41,1,41,4],[36,5,37,5],[36,6,37,6],[36,7,37,7],[38,7,39,7],[38,1,39,1],[38,3,39,3],[38,4,39,4],[38,5,39,5],[38,6,39,6],[28,3,29,3],[28,4,29,4],[28,5,29,5],[28,6,29,6],[32,7,33,7],[32,3,33,3],[32,4,33,4],[32,5,33,5],[32,6,33,6],[30,3,31,3],[30,4,31,4],[30,5,31,5],[30,6,31,6],[30,7,31,7],[20,1,21,1],[26,1,27,1],[14,1,15,1],[12,1,13,1],[28,7,29,7],[24,7,25,7],[26,3,27,3],[26,4,27,4],[26,5,27,5],[26,6,27,6],[26,7,27,7],[24,3,25,3],[24,4,25,4],[24,5,25,5],[24,6,25,6],[20,7,21,7],[22,3,23,3],[22,4,23,4],[22,5,23,5],[22,6,23,6],[22,7,23,7],[20,3,21,3],[20,4,21,4],[20,5,21,5],[20,6,21,6],[16,7,17,7],[18,3,19,3],[18,4,19,4],[18,5,19,5],[18,6,19,6],[18,7,19,7],[16,3,17,3],[16,4,17,4],[16,5,17,5],[16,6,17,6],[12,7,13,7],[14,3,15,3],[14,4,15,4],[14,5,15,5],[14,6,15,6],[14,7,15,7],[12,3,13,3],[12,4,13,4],[12,5,13,5],[12,6,13,6],[8,7,9,7],[10,3,11,3],[10,4,11,4],[10,5,11,5],[10,6,11,6],[10,7,11,7],[8,3,9,3],[8,4,9,4],[8,5,9,5],[8,6,9,6],[6,3,6,4],[6,5,6,6],[1,1,1,7],[6,1,7,1],[6,2,7,2],[6,7,7,7]]}
[]
[null,"                       LE VRAI RAPPORT QUALITE-PRIX DES PRINCIPAUX FORFAITS"]
[]
[]
[]
[]
[null,"Banque","Nom du package (tarif annuel)","Coût annuel du compte sans Internet",null,"Coût annuel du compte avec Internet",null,"L'avis de Capital (édition octobre 2007)"]
[null,null,null,"Avec package","Sans package","Avec package","Sans package"]
[null,"Banque populaire","Equipage 2",95,69,122,98,"Cher payé, le forfait ne permet même pas la gestion de ses comptes en ligne. A éviter"]
[null,"Rives de Paris","(95 €)"]
[null,"Banque populaire","Equipage 2",126,86,113,73,"A revoir. Ne propose aucun virement externe, ce qui alourdit la facture annuelle."]
[null,"Val de France","(84 €)"]
[null,"Barclays","Classic",108,129,108,113,"Pas donné, ce forfait est cependant conseillé : il est rentable dans tous les cas de figure."]
[null,null,"(108 €)"]
[null,"BNP Paribas","Esprit Libre",103,78,93,68,"Malgré deux virements inclus, coûte 30 à 36% plus cher que l'usage à la carte."]
[null,null,"Référence (91 €)"]
[null,"Caisse d'épargne","Satellis Essentiel",101,82,"72 € *",68,"Les clients utilisant Internet peuvent y trouver un intérêt (compte rémunéré gratuit)."]
[null,"Ile de France Paris","(90 €)"]
[null,"Caisse d'épargne","Satellis Essentiel",130,107,116,113,"Un des Produits les plus chers, et dépourvu de nombreux services utiles."]
[null,"Provence-Alpes-Corse","(90 €)"]
[null,"CIC","Essentiel",104,75,"96 €**",110,"N'inclut ni opposition ni virement : seulement conseillé aux internautes."]
[null,null,"(72 €)"]
[null,"Crédit Agricole","Compte Service",134,81,120,90,"Le coût réel de ce forfait, qui n'intègre pas la carte bancaire, s'élève à deux fois son prix !"]
[null,"Ile de France","Equilibre Plus (60 €)"]
[null,"Crédit Agricole","Compte Service",122,88,131,97,"Mal bâti. Alourdit de plus de 25% le coût d'utilisation du compte courant."]
[null,"Centre Est","Equilibre (51 €)"]
[null,"Crédit du Nord","Norplus option",117,81,138,111,"Services superflus (assurance, coffre-fort, …), pas d'accès Internet : un forfait médiocre."]
[null,null,"Visa (92 €)"]
[null,"Crédit Mutuel","Eurocompte CMB",88,97,79,100,"Jusqu'à 21 euros d'économie : un package rentable et parmi les moins chers du marché."]
[null,"de Bretagne","(67 €)"]
[null,"Crédit Mutuel","Eurocompte",134,73,120,95,"Ce forfait, un des deux plus chers à l'achat, augmente dans tous les cas la facture."]
[null,"Ile de France","Confort (108 €)"]
[null,"HSBC France","HSBC Dynamique",94,100,94,86,"Aucune mauvaise surprise avec cette formule, bien conçue. Sauf son prix élevé."]
[null,null,"(90 €)"]
[null,"La Banque Postale","Adispo Privilège",80,79,67,66,"Presque rentable. Donne aussi droit à une franchise d'agios sur les découverts."]
[null,null,"(52 €)"]
[null,"LCL","Formule Zen",121,92,123,97,"S'en tenir à la facturation à la carte fait ici économiser de 26 à 29 euros par an."]
[null,null,"(55 €)"]
[null,"Société Générale","Jazz",112,78,100,64,"Trop de services guère utilisés, comme ces trois chèques de banque par an."]
[null,null,"(89 €)"]
[null,"Pour réaliser ce comparatif, nous avons calculé le coût réel des packages de seize banques pour un client effectuant des opérations tout au long de l'année et comparer ce coût avec ce qu'il aurait payé s'il n'avait pas pris le forfait. Conclusion : le coût réel des forfaits est supérieur à leur prix. Parce que des services indispensables n'y figurent pas et sont facturés en plus. Autre leçon à retenir : la facturation à la carte revient le plus souvent moins cher. Sauf à la Barclays, au Crédit Mutuel de Bretagne et chez HSBC, dont les forfaits collent assez biens aux besoins du client."]
[null,"* Package retenu : Satellis Direct, spécifique à la gestion Internet, à 68 euros par an",null,null,null,"** Package retenu : Global Formule Web, spécifique à la gestion Internet, à 96 euros par an."]

{"sheet":"Coût d'un compte","index":1,"n_rows":32,"n_cols":20,"rows_kept":32,"cut":false,"hidden":true,"merged":[[26,17,27,17],[26,19,27,19],[24,13,25,13],[24,15,25,15],[24,17,25,17],[28,19,29,19],[30,13,31,13],[30,15,31,15],[30,17,31,17],[30,19,31,19],[28,13,29,13],[28,14,29,14],[28,15,29,15],[28,17,29,17],[22,15,23,15],[22,17,23,17],[22,19,23,19],[28,7,29,7],[30,1,31,1],[30,3,31,3],[30,5,31,5],[30,7,31,7],[28,1,29,1],[28,3,29,3],[28,5,29,5],[24,1,25,1],[24,3,25,3],[24,5,25,5],[24,7,25,7],[24,6,25,6],[26,1,27,1],[26,3,27,3],[26,5,27,5],[26,7,27,7],[24,19,25,19],[26,13,27,13],[26,14,27,14],[26,15,27,15],[20,1,20,7],[21,1,21,3],[21,5,21,7],[22,1,23,1],[22,3,23,3],[22,5,23,5],[22,7,23,7],[13,19,14,19],[15,13,16,13],[15,15,16,15],[15,17,16,17],[15,19,16,19],[15,14,16,14],[13,13,14,13],[13,14,14,14],[13,15,14,15],[13,17,14,17],[15,1,16,1],[15,3,16,3],[13,2,14,2],[20,13,20,19],[21,13,21,15],[21,17,21,19],[22,13,23,13],[9,14,10,14],[9,18,10,18],[11,13,12,13],[11,15,12,15],[11,17,12,17],[11,19,12,19],[11,14,12,14],[15,7,16,7],[6,17,6,19],[7,13,8,13],[7,15,8,15],[7,17,8,17],[7,19,8,19],[9,13,10,13],[9,15,10,15],[9,17,10,17],[9,19,10,19],[9,5,10,5],[9,7,10,7],[11,5,12,5],[11,7,12,7],[13,5,14,5],[13,7,14,7],[15,5,16,5],[9,3,10,3],[9,1,10,1],[11,1,12,1],[11,3,12,3],[13,1,14,1],[13,3,14,3],[5,13,5,19],[6,13,6,15],[5,1,5,7],[7,1,8,1],[7,5,8,5],[7,6,8,6],[7,3,8,3],[6,1,6,3],[7,7,8,7],[6,5,6,7]]}
[]
[]
[]
[]
[]
[null,"Coût d'un compte avec une carte standard sans Internet",null,null,null,null,null,null,null,null,null,null,null,"Coût d'un compte avec une carte standard et Internet"]
[null,"Les moins chères",null,null,null,"Les plus chères",null,null,null,null,null,null,null,"Les moins chères",null,null,null,"Les plus chères"]
[null,"1.","Crédit Agricole",69,null,"1.","Barclays",129,null,null,null,null,null,"1.","Boursorama",37,null,"1.","Crédit agricole",161]
[null,null,"Nord-Est",null,null,null,null,null,null,null,null,null,null,null,"Banque",null,null,null,"Charente-Périgord"]
[null,"1.","Banque Populaire",69,null,"2.","Banque populaire",124,null,null,null,null,null,"2.","Coopabanque",46,null,"2.","Créd. Agr. Charente -Marit. Deux Sèvres",150]
[null,null,"Rives de Paris",null,null,null,"côte d'Azur"]
[null,"3.","Crédit Agricole",71,null,"2.","Crédit agricole",124,null,null,null,null,null,"2.","Monabanq",46,null,"3.","Banque populaire",147]
[null,null,"Normandie",null,null,null,"Anjou",null,null,null,null,null,null,null,null,null,null,null,"Côte d'Azur"]
[null,"4.","Crédit Comparatif",73,null,"4.","Crédit agricole",120,null,null,null,null,null,"4.","Groupama Banque",53,null,"4.","Banque populaire",140]
[null,null,null,null,null,null,"Charente-Périgord",null,null,null,null,null,null,null,null,null,null,null,"des Alpes"]
[null,"4.","Crédit mutuel",73,null,"5.","Crédit mutuel",118,null,null,null,null,null,"5.","Axa Banque",57,null,"5.","Crédit Mutuel",138]
[null,null,"Ile-de-France",null,null,null,"du Sud-Ouest",null,null,null,null,null,null,null,null,null,null,null,"du Sud-Ouest"]
[]
[]
[]
[null,"Coût d'un compte avec une carte haute gamme sans Internet",null,null,null,null,null,null,null,null,null,null,null,"Coût d'un compte avec une carte haute gamme et Internet"]
[null,"Les moins chères",null,null,null,"Les plus chères",null,null,null,null,null,null,null,"Les moins chères",null,null,null,"Les plus chères"]
[null,"1.","Crédit mutuel",155,null,"1.","Banque populaire",326,null,null,null,null,null,"1.","Boursorama",156,null,"1.","Banque populaire",349]
[null,null,"Massif central",null,null,null,"Côte d'Azur",null,null,null,null,null,null,null,"Banque",null,null,null,"Centre Atlantique"]
[null,"2.","Crédit mutuel",191,null,"2.","Barclays",319,null,null,null,null,null,"2.","Crédit mutuel",171,null,"1.","Banque populaire",349]
[null,null,"de Bretagne",null,null,null,null,null,null,null,null,null,null,null,"Massif Central",null,null,null,"Côte d'Azur"]
[null,"3.","Crédit agricole",196,null,"3.","Caisse d'épargne",315,null,null,null,null,null,"2.","Coopabanque",173,null,"3.","Banque populaire",330]
[null,null,"Centre France",null,null,null,"de Bretagne",null,null,null,null,null,null,null,null,null,null,null,"du Nord"]
[null,"4.","Créd. Agr. Toulouse",200,null,"4.","Banque populaire",314,null,null,null,null,null,"4.","Monabanq",179,null,"4.","crédit Agricole",329]
[null,null,"et Midi Toulousain",null,null,null,"Centre Atlantique",null,null,null,null,null,null,null,null,null,null,null,"Charente-Périgord"]
[null,"5.","Crédit agricole",203,null,"5.","Société marseillaise",312,null,null,null,null,null,"5.","Crédit agricole",183,null,"5.","Banque populaire",327]
[null,null,"Nord Est",null,null,null,"de Crédit",null,null,null,null,null,null,null,"Centre France",null,null,null,"des Alpes"]

{"sheet":"rachat","index":2,"n_rows":40,"n_cols":6,"rows_kept":40,"cut":false,"hidden":false,"merged":[[0,0,1,5],[5,0,5,2],[5,4,5,5],[17,0,17,2],[37,0,37,1],[19,0,19,1],[22,4,22,5],[26,4,26,5],[35,0,35,2]]}
["RACHAT DE PRÊT"]
[]
[]
[]
[]
["SITUATION ACTUELLE",null,null,null,"Décomposition montant nouveau prêt"]
[]
["capital restant du en","2021-01-01",245000,null,"capital dû",{"$f":"C8","v":245000}]
[]
["nombre de mensualités restantes",null,240,null,"pénalités (3%)",2400]
[]
["mensualité  assurance incluse",null,669.96,null,"travaux"]
[]
["Total du",null,{"$f":"(C10*C12)","v":160790.40000000002},null,"FRAIS DOSSIER",990]
[]
["COUT TOTAL (interets + assurances)",null,{"$f":"C14-C8","v":-84209.599999999977},null,"CREDIT LOGEMENT",1926]
[]
["SITUATION NOUVELLE ",null,null,null,"AUTRE GARANTIE",1500]
[]
["montant nouveau prêt ",null,123000,null,"total",{"$f":"SUM(F8+F10+F12+F16+F18+F14)","v":251816}]
[]
["taux d'intérêts hors assurance",null,9.1000000000000004E-3]
[null,null,null,null,"Cout final credit logement si restitution 75%"]
["durée en mois",null,196,null,null,{"$f":"(F16-300)*0.75","v":1219.5}]
[]
["mensualité sans assurance",null,{"$f":"-PMT(C22/12,C24,C20)","v":675.58088877521209}]
[null,null,null,null,"Assurances du Rachat"]
["assurance mensuelle",0,0]
[null,null,null,null,"Quotité Monsieur",1]
["mensualité assurance incluse",null,585.49]
[null,null,null,null,"Quotité Madame",0]
[]
["total dû",null,{"$f":"C30*C24","v":114756.04000000001},null,null,"TAUX"]
[null,null,null,null,"Monsieur",2.8E-3]
["coût total",null,{"$f":"((C24*C30))-C20","v":-8243.9599999999919},null,"Madame",0]
[]
[{"$f":"IF(B37<0,\"perte\",\"gain\")","v":"gain"},{"$f":"-((C30*C24)-C12*C10)","v":46034.360000000015},20000,null,null,"MENSUALITES"]
[null,null,null,null,"Monsieur",{"$f":"SUM(C20*F34/12)*F29","v":28.7}]
[{"$f":"IF(B37>0,\"gain mensuel\",\"\")","v":"gain mensuel"},{"$f":"IF(B37>0,B37/C24,\"\")","v":234.86918367346948},null,null,"Madame",{"$f":"SUM(C20*F35/12)*F31","v":0}]
[null,null,null,null,"Total",{"$f":"SUM(F38:F39)","v":28.7}]

{"sheet":"Banque de Bretagne","index":3,"n_rows":35,"n_cols":7,"rows_kept":35,"cut":false,"hidden":true,"merged":[[5,1,9,10],[10,1,12,10],[13,1,14,5],[13,6,14,10],[34,1,35,10],[27,6,28,10],[23,1,24,5],[15,1,18,5],[27,1,28,5],[31,6,32,10],[31,1,32,5],[15,6,18,10],[19,6,20,10],[33,1,33,10],[21,6,21,7]]}
[]
[]
[]
[]
[]
[null,"Banque de Bretagne"]
[]
[]
[]
[]
[null,"Créée en 1909, la Banque de Bretagne s’est nourrie au fil du temps de l’expérience et de la mobilisation de personnalités bretonnes. \nA ce caractère régional bien affirmé et la qualité de services de proximité,  elle a pu élargir depuis 1989 sa gamme de services en rejoignant le groupe BNP Paribas \n\nSolution packagée: ''Convention DUO LIBERTÉ Plein Ciel'' tarif 67,8 euros\nLe pack comprend : DUO LIBERTÉ est une offre de services comprenant une carte bancaire, une facilité de caisse (à l'exception de DUO LIBERTÉ Élan et Forfait de compte), la tenue de compte, un relevé mensuel et l'accès illimité aux services de banque à distance.\nLe prix de DUO LIBERTÉ varie selon les options choisies. Il évolue à chaque date anniversaire du contrat.\n\nCoût de la carte Visa sans pack : 35 euros par an\n\nPas de solution Assurance habitation "]
[]
[]
[null,"POINTS FORTS",null,null,null,null,"POINTS FAIBLES"]
[]
[null,"Modularité des échéances\nModularité gratuite. \nA la hausse ou à la baisse sans  toutefois pouvoir dépasser la date d'échéance finale d'origine.\nA compter du 24 ème mois et chaque année.",null,null,null,null,"Modularité des échéances\nAccessible seulement à compter du 24 ème mois et chaque année."]
[]
[]
[]
[null,null,null,null,null,null,"Report d'échéance\nImpossible.\n"]
[]
[null,null,null,null,null,null,"Transfert de prêt "]
[null,null,null,null,null,null,"Impossible"]
[null,"Pénalités de Remboursement Anticipé\nExonération d'Indemnité de Remboursement Anticipé négociable."]
[]
[]
[]
[null,"Assurances de prêt\nPossible de proposer CARDIF, April et autres au cas par cas.\n",null,null,null,null,"Assurances de Prêt \nAssurances Groupe chère (Natio vie AXA 4208, 0,38% du capital emprunté)"]
[]
[]
[]
[null,"Divers\nVEFA : Franchise partielle et totale possible sur les intérêts intercalaires.",null,null,null,null,"Divers\nPas de prêt mixte et pas de prêt sur 30 ans.\nTrès faible réseau d'agences.\n"]
[]
[null,"\n"]
[null,"*   Réservé à un usage strictement interne\n**  Informations données à titre indicatif, sans engagement contractuel et susceptibles de modifications\n***Toute information contraire doit immédiatement être communiqué au département Animation et Formation"]

{"sheet":"Barclays","index":4,"n_rows":27,"n_cols":7,"rows_kept":27,"cut":false,"hidden":true,"merged":[[15,1,15,5],[15,6,15,10],[5,1,9,10],[10,1,12,10],[13,1,14,5],[13,6,14,10],[26,1,27,10],[20,6,21,10],[22,6,24,10],[22,1,24,5],[20,1,21,5],[25,1,25,10]]}
[]
[]
[]
[]
[]
[null,"Barclays"]
[]
[]
[]
[]
[null,"Barclays c'est 25 millions de clients à travers le monde.\nPrésent dans plus de 60 pays avec 118 000 collaborateurs et 3 000 agences à travers le monde.\nC'est une banque multispécialiste à destination de clientèles aisées et haut de gamme.\n\nSolution Packagée : '' Convention Classic '' tarif 108 euros\n\nLe pack comprend :  Le forfait Barclays Classic offre une carte de paiement internationale Visa Classic, l'assurance des moyens de paiement Barclays Sécurité, les frais d'opposition sur chèques et prélèvements, une opposition sur carte, les virements nationaux, la gratuité des retraits, un chèque de banque par an et l'exonération des frais de tenue de compte.\nBarclays Classic inclut également l'accès aux services de banque à distance, une facilité de caisse de 1500 euros et une assurance décès accidentel - perte totale et irréversible d'autonomie accidentelle.\nEnfin, le titulaire du forfait bénéficie de la rémunération de ses dépôts à 3% bruts (à la condition de dépenser au minimum 750 euros par mois avec sa carte bancaire).\n\nCoût de la carte Visa sans pack : 44 euros par an."]
[]
[]
[null,"POINTS FORTS",null,null,null,null,"POINTS FAIBLES"]
[]
[null,"Modularité des échéances\nModularité gratuite \nHausse jusqu'à 30% de l'échéance précédente ",null,null,null,null,"Modularité des échéances\nPossible à partir de la 2ème années (1 mois avant la date anniversaire) tous les 12 mois (1 fois par an)."]
[]
[]
[]
[]
[null,"Tarification des services \nExemple de tarification : Forfait Barclays Classic  --> 9€ / mois.\n\nConvention conseillée car rentable dans tous les cas de figure.",null,null,null,null,"Tarification des services \nAlors que la tarification moyenne d'une carte internationale à débit immédiat est de 34 euros elle est à Barclays à 44 euros.\n\nAlors que la tarification moyenne d'une carte haut de gamme est de 113 euros elle est à Barclays de 130 euros . \n\nAlors que la moyenne nationale de frais annuel de tenue de compte est de 7 euros elle est de 40 euros à la Barclays."]
[]
[null,"Divers\nCompte rémunéré, rémunération à 3% dès le premier euro, \njusqu'à 10 000 euros.\n\nConseillers joignables, les conseillers suivent leurs clients en moyenne 8 ans.\n\nIls ont des portefeuilles clients moins important et apportent un service de qualité.\n\nVEFA : Amortissement immédiat possible.",null,null,null,null,"Divers \nCompte rémunéré, pour en bénéficier : être titulaire d'un forfait Barclays et dépenser au moins 750€ par mois avec sa carte bancaire.\n\nBanque élitiste qui vise les revenus supérieurs à 50 000 € par an\nTrès faible réseau d'agences.\n\nPas de produits mixtes et pas de prêt sur 30 ans.\n\nPas de franchise partielle ou totale dans le cas de VEFA."]
[]
[]
[null,"\n"]
[null,"*   Réservé à un usage strictement interne\n**  Informations données à titre indicatif, sans engagement contractuel et susceptibles de modifications\n***Toute information contraire doit immédiatement être communiqué au département Animation et Formation"]

{"sheet":"BNP Paribas","index":5,"n_rows":34,"n_cols":11,"rows_kept":34,"cut":false,"hidden":true,"merged":[[6,1,10,9],[11,1,13,9],[14,1,15,5],[14,6,15,9],[20,1,21,5],[22,1,22,5],[16,6,19,9],[16,1,19,5],[20,6,21,9],[22,6,22,9],[33,1,34,9],[27,1,28,5],[30,1,31,5],[23,1,24,5],[29,1,29,5],[27,6,28,9],[29,6,29,9],[30,6,31,9],[32,1,32,9]]}
[]
[]
[]
[]
[]
[]
[null,"BNP Paribas"]
[]
[]
[]
[]
[null,"Un des plus grands réseau bancaire à l'international, 6ème banque mondiale, 1ère entreprise française (source Forbes 2007)\nBanque généraliste \"tous publics\", dynamique, dispose d'une très bonne image et d'un réseau d'agences très large (2500 agences)\n5ème banque sur 140 en terme de tarification, donc bien placée (selon l'Observatoire de la concurence), internet gratuit,\n\nSolution Packagée: '' Convention Esprit Libre Référence '' tarif 91 euros\nLe pack comprend : Carte Visa à débit immédiat ou différé, 2 chèques de banque et 2 virements permanents (frais de mise en place et frais de virements à l'unité) par an. Une assurance décès accidentel, une assurance des moyens de paiement qui prend en charge les frais d'opposition. Facilité de caisse avec un seuil de perception de 3 EUR / trimestre. . Huit retraits déplacés gratuits par mois. Accès à l'offre multimédia serveur vocal, téléconseillers, Internet (service transactionnel inclus).\n\nEn option : BNP Paribas Sécurité Plus, l'assurance des moyens de paiement étendue aux moyens de paiement des autres banques.\n\nCoût de la carte Visa sans pack : 37 euros par an\n\nSolution Assurance habitation : '' Assurance Habitation BNP Paribas'' \nElle offre en plus d'une assurance habitation complète (vol, incendie, dégâts des eaux), \ndes services d'assistance au domicile et aux personnes (vous-même et vos proches).\nFormule Habitat 1 est conçue pour vous si l'appartement que vous occupez (en tant que propriétaire ou locataire, seul ou en famille) se compose de \n3 pièces principales maximum. La valeur de vos biens mobiliers reste inférieure à 60 000 € dont 2 000 € pour votre matériel hi-fi, informatique, son, vidéo...\nFormule Habitat 2 est conçue pour vous si vous vivez en maison ou en appartement.\nFormule PNO (Propriétaire Non-Occupant) est conçue pour vous si vous avez investi dans un bien que vous louez vide. "]
[]
[]
[null,"POINTS FORTS",null,null,null,null,"POINTS FAIBLES"]
[]
[null,"Modularité des échéances\nModularité gratuite\nHausse : 2% jusqu’à 10% sans nouvelle étude de dossier, au-delà  nouvelle étude et cela par rapport à l'échéance précédente\nBaisse : 2% mini de la dernière échéance jusqu’à un allongement de la durée initiale de 2 ans maxi.",null,null,null,null,"Modularité des échéances\nPossible seulement à partir de la 3ème année\nSi modulation supérieure à 10%, nouvelle étude du dossier et risque de refus",null,null,null," "]
[]
[]
[]
[null,"Report des échéances \nReport des échéances gratuit\nPossible de 3 à 12 mois et en plusieurs fois, Véritable sécurité en cas de difficulté"]
[]
[null,"Transférabilité du prêt\nSur nouvelle opération possible",null,null,null,null,"Transférabilité du prêt\n 2% du Capital Restant Du (mini 600€, maxi 2000€)\nL'option de transfert est caduque si l'emprunteur réalise un remboursement anticipé partiel ou une opération de modulation."]
[null,"Pénalités de Remboursement Anticipé\nExonération d'Indemnité de Remboursement Anticipé possible."]
[]
[]
[]
[null,"Assurances de prêt\nAcceptation de Cardif Garantie Emprunteur et de Meilleurtaux Emprunteur.",null,null,null,null,"Assurance de prêt\nADP groupe très chère (AXA, 36 à 50 ans = 0,41 du montant du prêt et au-dela 0,60%)\nL'ADP groupe ne contient qu'une invalidité totale à 66%, ne propose pas de protection de la famille, ne propose comme base de remboursement que la perte de revenu.\nElle n'exonère pas l'assuré du paiement des cotisations lors des prises en charge par l'assurance"]
[]
[null,"Tarification des services\nBien positionnée (5ème banque la moins chère selon une étude)\nOffre \"Esprit Libre\" complète et adaptée selon les profils clients. \nExemple de tarification : Esprit Libre Référence avec Carte Visa Classic\n --> 7,55€ / mois\n",null,null,null,null,"Tarification des services \nLe magazine Capital révèle en Octobre 2007 que malgré 2 virements inclus, le forfait coûte 30 à 36% plus cher que l'usage à la carte des services."]
[null,"Divers\nFinancement 110% possible sur jeune à potentiel ou primo accédant\nPas de frais de dossier pour les prêts immobiliers.\n\nAvantage pour les primo accédants : produit TEC 5 sur 30 ans (fixe 5 ans), produit fixe sur 30 ans.\n\nRIB invariant lors de changement d’agence.\n\nVEFA : les intérêts intercalaires peuvent être payés mensuellement ou en une fois à la consolidation du prêt ou reporté sur le capital emprunté.",null,null,null,null,"Divers\nFaible réactivité en raison de mécanisme de décision souvent lourd.\n\nLe Pack esprit Libre Référence coûte 30% à 36% plus cher que l'usage des services à la carte malgré deux virements inclus."]
[]
[]
[null,"*   Réservé à un usage strictement interne\n**  Informations données à titre indicatif, sans engagement contractuel et susceptibles de modifications\n***Toute information contraire doit immédiatement être communiqué au département Animation et Formation"]

{"sheet":"Caisse Epargne IDF","index":6,"n_rows":37,"n_cols":12,"rows_kept":37,"cut":false,"hidden":true,"merged":[[6,1,10,10],[11,1,13,10],[14,1,15,5],[14,6,15,10],[25,1,27,5],[20,1,22,5],[23,1,24,5],[23,6,24,10],[16,6,19,10],[16,1,19,5],[20,6,22,10],[28,6,29,10],[36,1,37,10],[32,1,33,5],[34,1,34,5],[34,6,34,10],[30,6,31,10],[32,6,33,10],[35,1,35,10],[28,1,29,5]]}
[]
[]
[]
[]
[]
[]
[null,"Caisse d'Epargne IDF Paris"]
[]
[]
[]
[]
[null,"3ème groupe bancaire Français ayant pour ambition de devenir '' La banque universelle \"\nImage de marque très forte auprès des Français, banque rajeunissant son image de marque\nCompte chèque rémunéré (dès le premier euro, avec le Forfait Satellis Essentiel, l'argent de votre compte de dépôt vous rapporte désormais 0,50% jusqu'à 2500 € \nPrise en charge gratuite du changement des coordonnées bancaires du client (Domilis)\nPas de facturation pour les retraits dans les distributeurs autre que CE, si utilisation des distributeurs CE obtention de points S'Miles qui permettent d'avoir des cadeaux\n\nSolution Packagée : '' Convention Satellis Essentiel '' tarif 90 euros\nLe pack comprend : Satellis Essentiel regroupe une carte Visa à débit immédiat, une assurance perte et vol des moyens de paiement, une facilité de caisse, les services de gestion des comptes à distance (Internet, minitel, téléphone et mobile), la rémunération du compte courant. En outre le titulaire est exonéré des frais de tenue de compte, des frais d'émission d'un chèque de banque, il bénéficie d'une assistance opposition, d'un service d'épargne automatique. Il peut également effectuer gratuitement un virement ponctuel et bénéficie d’un échéancier de virement permanent.\n\nCoût de la carte Visa sans pack : 34,55 euros par an.\n\nSolution Assurance habitation :  '' Assurance Habitation Caisse d'Epargne ''\nFORMULE 1 '',Spécialement conçue pour les jeunes de moins de 26 ans et adaptée à leur mode de vie.\n- Une garantie en cas de vol jusqu’à 8 000 €.\n- Le rééquipement en valeur à neuf pour le matériel informatique, image et son de moins de 3 ans,\nFORMULE 2, les garanties essentielles pour assurer ce qui compte le plus pour vous sans monopoliser votre budget…\n- Un capital mobilier assuré jusqu’à 32 000 €\n- Les objets de valeur remboursés en cas de vol jusqu’à 3 200 €,\nFORMULE 3, pour vous assurer un remboursement optimal et la tranquillité d’esprit en cas de sinistre. \n- Un capital mobilier assuré jusqu’à 80 000 €.\n- Le rééquipement en valeur à neuf quel que soit le sinistre.\nEn cas de sinistre important, la prise en charge de plusieurs mensualités du crédit immobilier ou de vos loyers si vous êtes locataire.\nAvec la FORMULE 3+, des garanties et des options pour couvrir votre capital mobilier jusqu’à 162 000 €.\n"]
[]
[]
[null,"POINTS FORTS",null,null,null,null,"POINTS FAIBLES"]
[]
[null,"Modularité des échéances \nModularité possible et gratuite\nModularité accessible dès la 13ème échéance.\nHausse : 2.75% jusqu’à 10% sans nouvelle étude du dossier au-delà nouvelle étude par rapport à l'échéance précédente.\nBaisse : l'allongement de la durée du crédit ne doit pas excéder 2 ans.",null,null,null,null,"Modularité des échéances \nAu delà de 10% nouvelle étude de la banque avec justificatifs par rapport à l'échéance précédente.",null,null,null,null," "]
[]
[]
[]
[null,"Report d'échéance\nPossible de reporter 1 à 12 échéances en 1 ou plusieurs fois, à partir de la 18ème échéance."]
[]
[]
[null,"Transférabilité du prêt\nTransfert possible et gratuit. ",null,null,null,null,"Transférabilité du prêt\nSoumis à l'acceptation de l'agence gérant la relation avec le client, et si SACCEF OK, et que l'opération se fasse en moins de 2 mois. \n\nFrais de dossier à la discrétion de l'agence CE.\n\n"]
[]
[null,"Pénalités Remboursement Anticipé\nNégociable si prévente de l'assurance Multi Risques Habitation."]
[]
[]
[null,"Garantie\nSACCEF (moins chère que Crédit Logement).",null,null,null,null,"Garantie\nCaution SACCEF, non remboursable."]
[]
[null,null,null,null,null,null,"Assurances de Prêt\nPrivilégie son assurances groupe. \nAccorde peu d'accepation de délégation."]
[]
[null,"Tarification des services \nUne des moins chère du marché et un compte rémunéré gratuit.\nLe magazine Capital Octobre 2007 révèle que le coût annuel d'un compte est le moins cher de toute les CE.\nLa tenue de compte, la gestion par internet et les prélèvements automatiques sont gratuits.\nOffre diversifiée et complète pouvant satisfaire la clientèle la plus large\nExemple de tarification : Formule Satellis Direct ---> 5,65€ / mois."]
[]
[null,"Divers\nCompte chèque rémunéré.\n\nLarge réseau d'agences de proximité sur l'ensemble du territoire.\n\nAvantage pour les primo accédants taux fixe sur 30 ans et produit mixte (Tactimmo 3 et 5, fixe 3 ans et 5 ans et capé 2,5 ensuite).",null,null,null,null,"Divers \nBarème non dérogeable, impossible de décôter par rapport à la grille fournie par la CEIDF.\n\nPas de décote possible sur profil haut de gamme."]
[null,"\n"]
[null,"*   Réservé à un usage strictement interne\n**  Informations données à titre indicatif, sans engagement contractuel et susceptibles de modifications\n***Toute information contraire doit immédiatement être communiqué au département Animation et Formation"]

{"sheet":"Caisse Epargne Rhone Alpes","index":7,"n_rows":36,"n_cols":12,"rows_kept":36,"cut":false,"hidden":true,"merged":[[31,1,33,5],[30,1,30,5],[22,6,24,10],[27,6,28,10],[29,6,29,10],[6,1,10,10],[11,1,13,10],[14,1,15,5],[14,6,15,10],[35,1,36,10],[16,1,18,5],[19,1,21,5],[16,6,18,10],[19,6,21,10],[22,1,24,5],[29,1,29,5],[25,6,26,10],[25,1,26,5],[30,6,30,10],[34,1,34,10],[31,6,33,10]]}
[]
[]
[]
[]
[]
[]
[null,"Caisse d'Epargne Rhône Alpes"]
[]
[]
[]
[]
[null,"3ème groupe bancaire Français ayant pour ambition de devenir \"La banque universelle\"\nImage de marque très forte auprès des Français, banque rajeunissant son image de marque\nCompte chèque rémunéré (dès le premier euro, avec le Forfait Satellis Essentiel, l'argent de votre compte de dépôt vous rapporte désormais 0,50% jusqu'à 2500 € \nPrise en charge gratuite du changement des coordonnées bancaires du client (Domilis)\nPas de facturation pour les retraits dans les distributeurs autre que CE, si utilisation des distributeurs CE obtention de points S'Miles qui permettent d'avoir des cadeaux\n\nSolution Packagée : '' Convention Satellis Essentiel '' tarif 90 euros\nLe pack comprend : Satellis Essentiel regroupe une carte Visa à débit immédiat, une assurance perte et vol des moyens de paiement, une facilité de caisse, les services de gestion des comptes à distance (Internet, minitel, téléphone et mobile), la rémunération du compte courant. En outre le titulaire est exonéré des frais de tenue de compte, des frais d'émission d'un chèque de banque, il bénéficie d'une assistance opposition, d'un service d'épargne automatique. Il peut également effectuer gratuitement un virement ponctuel et bénéficie d’un échéancier de virement permanent.\n\nCoût de la carte Visa sans pack : 34,65 euros par an\n\nSolution Assurance habitation : Assurance Habitation Caisse d'Epargne \nFORMULE 1, spécialement conçue pour les jeunes de moins de 26 ans et adaptée à leur mode de vie.\n- Une garantie en cas de vol jusqu’à 8 000 €.\n- Le rééquipement en valeur à neuf pour le matériel informatique, image et son de moins de 3 ans,\nFORMULE 2, les garanties essentielles pour assurer ce qui compte le plus pour vous sans monopoliser votre budget…\n- Un capital mobilier assuré jusqu’à 32 000 €\n- Les objets de valeur remboursés en cas de vol jusqu’à 3 200 €,\nFORMULE 3, pour vous assurer un remboursement optimal et la tranquillité d’esprit en cas de sinistre. \n- Un capital mobilier assuré jusqu’à 80 000 €.\n- Le rééquipement en valeur à neuf quel que soit le sinistre.\nEn cas de sinistre important, la prise en charge de plusieurs mensualités du crédit immobilier ou de vos loyers si vous êtes locataire.\nAvec la FORMULE 3+, des garanties et des options pour couvrir votre capital mobilier jusqu’à 162 000 €. \n"]
[]
[]
[null,"POINTS FORTS",null,null,null,null,"POINTS FAIBLES"]
[]
[null,"Modularité des échéances \nModularité possible et gratuite\nA la hausse: jusqu'à 50% de l'échéance initiale. \nA la baisse: on ne peut descendre en-dessous de l'échéance initiale.",null,null,null,null,"Modularité des échéances\nPossible uniquement à partir de la 13ème échéance et à date anniversaire",null,null,null,null," "]
[]
[]
[null,"Report d'échéance\nPossible de reporter 3 à 12 échéances en 1 ou plusieurs fois, à partir de la 18ème échéance, 1 seule fois par an.",null,null,null,null,"Report d'échéance\nSeulement à partir de la 18ème échéance, et 1 seule fois par an"]
[]
[]
[null,"Transférabilité du prêt\nTransfert possible et gratuit.  ",null,null,null,null,"Transférabilité du prêt\nSoumis à l'acceptation de l'agence gérant la relation avec le client, et si SACCEF OK, et que l'opération se fasse en moins de 2 mois. Frais de dossier à la discrétion de l'agence CE"]
[]
[]
[null,"Pénalités Remboursement Anticipé\nNégociable",null,null,null,null,"Pénalités Remboursement Anticipé\nAccepte l'exo uniquement à partir de 5 ans après le début du prêt"]
[]
[null,null,null,null,null,null,"Garantie de prêt\nCaution SACCEF, non remboursable"]
[]
[null,"Assurances de prêt\nApril possible",null,null,null,null,"Assurances de prêt\nPrivilégie son ADP groupe (CNP) à de rares exceptions délégation (APRIL)"]
[null,"Tarification des services\nUne des moins chère du marché et un compte rémunéré gratuit\nOffre diversifiée et complète pouvant satisfaire la clientèle la plus large\nExemple de tarification : Formule Satellis Essentiel ----> 6,54€ / mois"]
[null,"Divers\nCompte chèque rémunéré\nLarge réseau d'agences de proximité sur l'ensemble du territoire\nPas de facturation si vous retirez dans une autre banque que la Caisse d'Epargne, système de points de fidélité si retrait auprès d'une caisse d'épargne\nProduits en taux fixe sur 30 ans",null,null,null,null,"Divers\nPas de produits Mixte"]
[]
[]
[null,"\n"]
[null,"*   Réservé à un usage strictement interne\n**  Informations données à titre indicatif, sans engagement contractuel et susceptibles de modifications\n***Toute information contraire doit immédiatement être communiqué au département Animation et Formation"]

{"sheet":"Caisse Epargne de Bretagne","index":8,"n_rows":37,"n_cols":12,"rows_kept":37,"cut":false,"hidden":true,"merged":[[24,6,26,10],[29,6,29,10],[6,1,10,10],[11,1,13,10],[14,1,15,5],[14,6,15,10],[16,1,20,5],[24,1,26,5],[16,6,20,10],[21,6,23,10],[27,6,27,10],[36,1,37,10],[30,1,30,5],[30,6,30,10],[31,1,34,5],[31,6,34,10],[35,1,35,10]]}
[]
[]
[]
[]
[]
[]
[null,"Caisse d'Epargne Bretagne"]
[]
[]
[]
[]
[null,"3ème groupe bancaire Français ayant pour ambition de devenir '' La banque universelle \"\nImage de marque très forte auprès des Français, banque rajeunissant son image de marque\nCompte chèque rémunéré (dès le premier euro, avec le Forfait Satellis Essentiel\n\nSolution Packagée : '' Convention Satellis Essentiel '' tarif 90 euros\nLe pack comprend : Satellis Essentiel regroupe une carte Visa à débit immédiat, une assurance perte et vol des moyens de paiement, une facilité de caisse, les services de gestion des comptes à distance (Internet, minitel, téléphone et mobile), la rémunération du compte courant. En outre le titulaire est exonéré des frais de tenue de compte, des frais d'émission d'un chèque de banque, il bénéficie d'une assistance opposition, d'un service d'épargne automatique. Il peut également effectuer gratuitement un virement ponctuel et bénéficie d’un échéancier de virement permanent.\n\nCoût de la carte Visa sans pack : 17,32 euros par an\n\nSolution Assurance habitation : Assurance Habitation Caisse d'Epargne \nFORMULE 1, spécialement conçue pour les jeunes de moins de 26 ans et adaptée à leur mode de vie.\n- Une garantie en cas de vol jusqu’à 8 000 €.\n- Le rééquipement en valeur à neuf pour le matériel informatique, image et son de moins de 3 ans,\nFORMULE 2, les garanties essentielles pour assurer ce qui compte le plus pour vous sans monopoliser votre budget…\n- Un capital mobilier assuré jusqu’à 32 000 €\n- Les objets de valeur remboursés en cas de vol jusqu’à 3 200 €,\nFORMULE 3, pour vous assurer un remboursement optimal et la tranquillité d’esprit en cas de sinistre. \n- Un capital mobilier assuré jusqu’à 80 000 €.\n- Le rééquipement en valeur à neuf quel que soit le sinistre.\nEn cas de sinistre important, la prise en charge de plusieurs mensualités du crédit immobilier ou de vos loyers si vous êtes locataire.\nAvec la FORMULE 3+, des garanties et des options pour couvrir votre capital mobilier jusqu’à 162 000 €. \n"]
[]
[]
[null,"POINTS FORTS",null,null,null,null,"POINTS FAIBLES"]
[]
[null,"Modularité des échéances \nModularité possible et gratuite.\nA la hausse: maxi 20% de l'échéance initiale. \nA la baisse: pas moins que l'échéance initiale et à partir de la 12 ème échéance, sans limite.",null,null,null,null,"Modularité des échéances\nPossible uniquement à partir de la 12ème échéance et à date anniversaire.",null,null,null,null," "]
[]
[]
[]
[]
[null,null,null,null,null,null,"Report d'échéance\nNon."]
[]
[]
[null,"Transférabilité du prêt\ntransfert de prêt possible",null,null,null,null,"Transférabilité du prêt\n327,08€ de frais."]
[]
[]
[null,null,null,null,null,null,"Pénalités remboursement anticipé\nNon négociable."]
[]
[null,null,null,null,null,null,"Assurance de Prêt\nDélégation non négociable."]
[null,"Tarification des services\nUne des moins chère du marché et un compte rémunéré gratuit.\nExemple de tarification : Formule Satellis Essentiel -----> 9€ / mois.",null,null,null,null,"Tarification des services\nLe magazine Capital Octobre 2007 révèle que la tarification de CE de Bretagne est élevée et la rend peu attractive (prix de la Visa premier 127 euros, d'un envoi de chequier à 6,54 euros)"]
[null,"Divers \nCompte chèque rémunéré.\nLarge réseau d'agences de proximité sur l'ensemble du territoire.\nOffre diversifiée et complète pouvant satisfaire la clientèle la plus large.\nCrédit Duo fixe plus variable."]
[]
[]
[]
[null,"\n"]
[null,"*   Réservé à un usage strictement interne\n**  Informations données à titre indicatif, sans engagement contractuel et susceptibles de modifications\n***Toute information contraire doit immédiatement être communiqué au département Animation et Formation"]

{"sheet":"C. I. C","index":9,"n_rows":28,"n_cols":7,"rows_kept":28,"cut":false,"hidden":true,"merged":[[5,1,9,10],[10,1,12,10],[13,1,14,5],[13,6,14,10],[21,6,21,10],[15,6,16,10],[17,1,19,5],[15,1,16,5],[20,1,20,5],[21,1,21,5],[20,6,20,10],[17,6,19,10],[23,1,23,5],[27,1,28,10],[25,1,25,5],[22,1,22,5],[22,6,22,10],[25,6,25,10],[24,6,24,10],[23,6,23,10],[26,1,26,10]]}
[]
[]
[]
[]
[]
[null,"C.I.C"]
[]
[]
[]
[]
[null,"L'ensemble Crédit Mutuel-CIC est : le 4ème groupe bancaire, 2ème banque de détail, 1er bancassureur et 2ème pour la monétique\nBanque dynamique et avec un vaste réseau d'agences. Des conseillers agence très professionnels pour les besoins de la clientèle\n\nSolution Packagée : '' Convention Essentiel '' tarif 72 euros\nLe pack comprend : Le Contrat regroupe : une carte internationale à débit immédiat ou différé associée à une assurance perte et vol des moyens de paiement, une facilité de caisse, une assurance décès, des services de banque à distance (Filbanque Particuliers), un service d'épargne automatique, le service monéo, des services de protection (garantie achat). Le titulaire bénéficie en outre d'une exonération totale des frais de retraits déplacés (liée ici à la carte et non au package), ainsi que d'une franchise de 35 opérations sur les frais de traitement des opérations non automatisables.\n\nCoût de la carte Visa sans pack : 34 euros par an\n\nSolution Assurance habitation : '' Assurance Habitation CIC ''\nGarantie Tous Risques, rembourse les dommages occasionnés à vos biens assurés : du vase cassé à la chute accidentelle \nd'un arbre sur votre toit... vous serez intégralement remboursé.\nGarantie Dommages Électriques vous protège en cas de détérioration ou destruction de vos équipements suite à incendie \nou de surtension électrique. \nVous êtes indemnisé en valeur à neuf pour la durée que vous avez choisie : \njusqu'à 3 ans pour l'informatique et jusqu'à 9 ans pour les objets électriques.\n "]
[]
[]
[null,"POINTS FORTS",null,null,null,null,"POINTS FAIBLES"]
[]
[null,"Modularité des échéances\nModularité possible du prêt dès la 2ème année\n",null,null,null,null,"Modularité des échéances\nLa modularité est payante (15€ minimum).\nLimitée à la hausse à 30% de l'échéance initiale et accessible seulement à partir de la 2ème année.\nPour la diminution de l'échéance, il ne faut pas que la durée du prêt se rallonge de plus de 2 ans."]
[]
[null,"Report des échéances\nReport possible: 12 échéances (suspension des échéances pendant 3 mois et ce 4 fois durant la vie du prêt)"]
[]
[]
[null,"Transférabilité du prêt \nTransfert de prêt possible",null,null,null,null,"Transférabilité du prêt \nFrais de dossier possible."]
[]
[null,"Garantie de prêt\nPossible garantie caution par CMH (la moins chère du marché)."]
[null,"Assurances de prêt\nDélégation possible (Télévie) et Premium sous conditions.\n\nOffre Assurance De Prêt compétitive avec Assurance Crédit Mutuel.\n\nACE (Tarification agressive pour les jeunes) permet la distinction fumeur/non fumeur et offre les mêmes garanties que le contrat groupe Assurance Crédit Mutuel.",null,null,null,null,"Assurances de prêt\nL'ADP groupe (ACM) ne propose pas de protection famille, ne fait pas de distinction fumeur/non fumeur, n' a pour base de remboursement que la seule perte de revenu de l'assuré.\nElle n'exonère pas l'assuré du paiement des cotisations lors des prises en charge.\nLe contrat ACM et ACE (jeunes) ne prennent en compte qu'une invalidité totale (66% minimum), la perte de salaire est prise en charge.\n\n"]
[null,null,null,null,null,null,"Tarification des services \nLe magazine Capital Octobre 2007 ne conseille pas le forfait qui n'inclut ni opposition, ni virement et qui serait seulement conseillé aux internautes.\n\nBeaucoup de services sont plus chers que la moyenne nationale, c'est le cas : pour la réédition du code confidentiel, pour un rejet de prélèvement automatique...\n"]
[null,"Divers\nOffre crédit large avec possibilité de financement jusqu'à 30 ans avec une offre à taux mixte (taux fixe 10 ans et variable au-dela sans Indemnité de Remboursement Anticipé).\nVaste réseau d'agences sur le territoire.\nOffre avantageuse pour les jeunes et les primo accédants : produit fixe sur 30 ans, mixte (fixe 10 ans sur 30 ans), (fixe 5 ans), (fixe 10 ans).\nSi le risque le permet, possibilité d'amortissement immédiat du capital débloqué sur les projets en VEFA.\nCrédit revente : Relais et rachat du Capital Restant Du.",null,null,null,null,"Divers \nFrais de dossier systématique forfait 200 €.\nFranchise partielle uniquement pour les projets en VEFA.\nPas de franchise totale sauf sur prêt relais."]
[null,"\n"]
[null,"*   Réservé à un usage strictement interne\n**  Informations données à titre indicatif, sans engagement contractuel et susceptibles de modifications\n***Toute information contraire doit immédiatement être communiqué au département Animation et Formation"]

{"sheet":"Crédit Agricole IDF","index":10,"n_rows":33,"n_cols":12,"rows_kept":33,"cut":false,"hidden":true,"merged":[[5,1,9,10],[10,1,12,10],[13,1,14,5],[13,6,14,10],[19,1,19,5],[19,6,19,10],[15,6,18,10],[15,1,18,5],[32,1,33,10],[25,1,28,5],[29,1,30,5],[20,1,21,5],[20,6,21,10],[22,6,22,10],[24,6,24,10],[25,6,28,10],[29,6,30,10],[31,1,31,10]]}
[]
[]
[]
[]
[]
[null,"Crédit Agricole Ile de France"]
[]
[]
[]
[]
[null,"\" Une relation durable, ça change la vie \"\n1er Groupe Bancaire Français, 1ère banque europénne, 5ème banque mondiale\nLe Crédit Agricole rajeunit et dynamise son image grâce à sa communication. 1er réseau de proximité bancaire de France\nOffre jeune spéciale Formule Géniale sur 23 ans : 15 ans fixe modulable puis 8 ans révisable\nDégressivité sur les IRA, et tarif assurance avantageux\n\nSolution Packagée : '' Convention Service Equilibre Plus '' tarif 60 euros\nLe pack comprend :  une assurance des moyens de paiement, les frais d'opposition, la mise en place de virements permanents. Pour les imprévus, une facilité de caisse assortie d'une assurance décès invalidité et une exonération d'agios sontintégrées. Le service de banque à distance permet de gérer ses comptes courants et comptes titres via Internet.(attention le forfait ne contient pas la carte bancaire)\n\nCoût de la carte Visa ou MasterCard sans pack : 35 euros par an\n\nSolution Assurance habitation : Multirisques habitation (PACIFICA) \nFormule Eco : 1 à 4 pièces et 20 000 euros de capital mobilier.\nFormule Equilibre : 1 à 10 pièces et 50 000 euros de capital mobilier (ou plus si vous le souhaitez)\nFormule Rééquipement à Neuf : 1 à 20 pièces et 100 000 euros de capital mobilier (ou plus si vous le souhaitez)"]
[]
[]
[null,"POINTS FORTS",null,null,null,null,"POINTS FAIBLES"]
[]
[null,"Modularité des échéances\nModularité gratuite \nA partir de la 13ème échéance\nHausse : 30% maxi par rapport à l'échéance précédente\nBaisse : minoration de l’échéance jusqu’à un allongement de la durée initiale de 3 ans",null,null,null,null,null,null,null,null,null," "]
[]
[]
[]
[null,"Report des échéances \nReport possible et gratuit\n",null,null,null,null,"Report des échéances\nLimité à 1 échéance par an"]
[null,"Transférabilité du prêt \nTransfert de prêt possible et gratuit "]
[]
[null,null,null,null,null,null,"Pénalités en cas de remboursement anticipé\nExonération d'Indemnité de Remboursement Anticipé non négociables."]
[]
[null,null,null,null,null,null,"Assurances de prêt\nDélégation non négociable.  \nAssurance Groupe CNP chère et garantie limitée.\nPas de liberté donnée au client pour choisir son ADP."]
[null,"Tarification des services\nLe magazine Capital Octobre 2007 révèle que le coût annuel d'un compte au Crédit Agricole IDF est globalement bien positionné.\nOffre \"Equilibre+ /Privilège + /Optimum + /Initial /Prélude /Mozaïc\" . \nExemple de tarification : Privilège +  --> 6,10€ / mois.",null,null,null,null,"Tarification des services \nTarification des services élevée\nLe magazine Capital Octobre 2007 révèle que le coût réel du forfait Crédit Agricole n'intègre pas la carte bancaire et s'élève en réalité à 2 fois son prix"]
[]
[]
[]
[null,"Divers \nN'exige pas la domiciliation des revenus pour le locatif\nBanque de proximité, généraliste, tout public\nOffre adaptée pour les investisseurs, produits adaptés pour la construction, produit mixte G2 jusqu'à 25 ans\nVEFA : franchise partielle ou franchise totale\nAmortissement immédiat possible",null,null,null,null,"Divers\nPas de prêt sur 30 ans\nPrévoir des frais de dossier"]
[]
[]
[null,"*   Réservé à un usage strictement interne\n**  Informations données à titre indicatif, sans engagement contractuel et susceptibles de modifications\n***Toute information contraire doit immédiatement être communiqué au département Animation et Formation"]

{"sheet":"Crédit Agricole Normandie","index":11,"n_rows":29,"n_cols":12,"rows_kept":29,"cut":false,"hidden":true,"merged":[[5,1,9,10],[10,1,12,10],[13,1,14,5],[13,6,14,10],[23,1,24,5],[23,6,24,10],[20,1,20,5],[20,6,20,10],[21,6,21,10],[15,1,18,5],[15,6,18,10],[19,1,19,5],[19,6,19,10],[26,6,26,10],[28,1,29,10],[25,6,25,10],[26,1,26,5],[25,1,25,5],[27,1,27,10]]}
[]
[]
[]
[]
[]
[null,"Crédit Agricole Normandie"]
[]
[]
[]
[]
[null,"\"Une relation durable, ça change la vie\". 1er Groupe Bancaire Français, 1ère banque europénne, 5ème banque mondiale.\n Le Crédit Agricole rajeunit et dynamise son image grâce à sa communication. 1er réseau de proximité bancaire de France\n\nSolution Packagée : '' Convention Service Equilibre '' tarif 51 euros\nLe pack comprend :  une assurance des moyens de paiement, les frais d'opposition, la mise en place de virements permanents. Pour les imprévus, une facilité de caisse assortie d'une assurance décès invalidité et une exonération d'agios sontintégrées. Le service de banque à distance permet de gérer ses comptes courants et comptes titres via Internet.(attention le forfait ne contient pas la carte bancaire)\n\nCoût de la carte Visa ou MasterCard sans pack : 33,50 euros par an\n\nSolution Assurance habitation : Formule Eco : 1 à 4 pièces\nFormule Equilibre : 1 à 10 pièces\nFormule Rééquipement à Neuf : 1 à 20 pièces"]
[]
[]
[null,"POINTS FORTS",null,null,null,null,"POINTS FAIBLES"]
[]
[null,"Modularité des échéances\nModularité possible et gratuite. \nA la hausse: jusqu'à 30% de l'échéance initiale. \nA la baisse: il ne faut pas que la durée du prêt se rallonge de plus de 2 ans.",null,null,null,null,"Modularité des échéances\nPossible uniquement à partir de la 13ème échéance et limitée à 30%.",null,null,null,null," "]
[]
[]
[]
[null,"Report des échéances \nreport d'échéance possible et gratuit.\n1 fois par an pour 1 mensualité.",null,null,null,null,"Report des échéances\nLimité à 1 mois par an."]
[null,"Transférabilité du prêt \nTransfert de prêt possible au cas par cas."]
[null,null,null,null,null,null,"Pénalités de remboursement anticipé\nExonération difficilement négociable."]
[]
[null,"Assurances de prêt\nNégociable difficilement et sous conditions.",null,null,null,null,"Assurances de prêt\nPossibilité ADP Premium, mais hausse du taux et 153€ de frais\nAssurance groupe CNP chère et garantie limitée\nPas de liberté donnée au client pour choisir son ADP"]
[]
[null,"Tarification des services\nOffre \"Compte Service Avantage /Initial /Confort /Mozaïc\" . \nExemple de tarification : Privilège  --> 5,70€ / mois",null,null,null,null,"Tarification des services \nTarification des services élevée\nRetrait auprès des distributeurs d'autres banques payant : 1€ par retrait au-delà du 5ème \nLe magasine Capital Octobre 2007 révèle que le  forfait Crédit Agricole est mal bati et qu'il alourdit de plus de 25% le coût d'utilisation du compte courant"]
[null,"Divers \nBanque de proximité.\nBanque généraliste, tout public.\nFixe sur 30 ans.\n110% sur 25 ans.\n100% plus frais de négo sur 30 ans.\nVEFA : Franchise partielle uniquement sur les intérêts intercalaires.",null,null,null,null,"Divers\nPas de mixte\n200€ de frais de dossiers à intégrer"]
[]
[null,"*   Réservé à un usage strictement interne\n**  Informations données à titre indicatif, sans engagement contractuel et susceptibles de modifications\n***Toute information contraire doit immédiatement être communiqué au département Animation et Formation"]

{"sheet":"Crédit Agricole Provence Alpes","index":12,"n_rows":34,"n_cols":12,"rows_kept":34,"cut":false,"hidden":true,"merged":[[20,1,23,5],[32,1,32,10],[20,6,23,10],[24,1,25,5],[29,6,29,10],[28,6,28,10],[6,1,10,10],[11,1,13,10],[14,1,15,5],[14,6,15,10],[16,1,19,5],[16,6,19,10],[26,6,26,10],[26,1,26,5],[33,1,34,10],[30,1,31,5],[29,1,29,5]]}
[]
[]
[]
[]
[]
[]
[null,"Crédit Agricole Alpes Provence"]
[]
[]
[]
[]
[null,"\"Une relation durable, ça change la vie\"\n1er Groupe Bancaire Français, 1ère banque europénne, 5ème banque mondiale.\nLe Crédit Agricole rajeunit et dynamise son image grâce à sa communication. \n1er réseau de proximité bancaire de France\n\nSolution Packagée : '' Convention Service Equilibre '' tarif  51 euros\nLe pack comprend :  une assurance des moyens de paiement, les frais d'opposition, la mise en place de virements permanents. Pour les imprévus, une facilité de caisse assortie d'une assurance décès invalidité et une exonération d'agios sont intégrées. Le service de banque à distance permet de gérer ses comptes courants et comptes titres via Internet. Attention : le forfait ne contient pas la carte bancaire.\n\nCoût de la carte MasterCard sans pack : 42,50 euros par an\n\nSolution Assurance habitation : Formule Eco : 1 à 4 pièces\nFormule Equilibre : 1 à 10 pièces\nFormule Rééquipement à Neuf : 1 à 20 pièces"]
[]
[]
[null,"POINTS FORTS",null,null,null,null,"POINTS FAIBLES"]
[]
[null,"Modularité des échéances\nModularité possible et gratuite. \nA la hausse: jusqu'à 30% de l'échéance précédente. \nA la baisse: il ne faut pas que la durée du prêt se rallonge de plus de 3 ans pour un taux fixe, 5 ans pour un taux variable.",null,null,null,null,"Modularité des échéances\nPossible uniquement à partir de la 13ème échéance et limitée à 30%",null,null,null,null," "]
[]
[]
[]
[null,"Report des échéances \nReport possible et gratuit\nLe client a le choix soit de faire un report partiel (uniquement le capital), soit un report total (intérêts + capital). \nPossibilité de faire une pause (2 à 5 ans) UNIQUEMENT sur étude du dossier.",null,null,null,null,"Report des échéances\nPossible uniquement à partir de la 13ème échéance. \nLimité à 1 échéance par an."]
[]
[]
[]
[null,"Transférabilité du prêt \nTransfert possible au cas par cas."]
[]
[null,"Pénalités de remboursement anticipé\nExonération négociable sous réserve de vente de l'assurance Multi Risques Habitation.",null,null,null,null,"Pénalités en cas de remboursement anticipé\nSoumise à la vente de la Multi Risques Habitation du Crédit Agricole."]
[]
[null,null,null,null,null,null,"Assurances de prêt \nDélégations non négociables. \nAssurance Groupe CNP chère et garantie limitée.\nPas de liberté donnée au client pour choisir son Assurance De Prêt."]
[null,"Tarification des services\nOffre \"Compte Service Sérénité  /Optimum  /Initial /Mozaïc\" . \nExemple de tarification : Sérénité  --> 59,76€ / an.\nNom du package: '' Convention Service Equilibre Plus '' tarif 60 euros",null,null,null,null,"Tarification des services \nTarification des services élevée\n\nRetrait auprès des distributeurs d'autres banques payant : 0,94€ / retrait\nLe magasine Capital Octobre 2007 révèle que le  forfait Crédit Agricole est mal bati et qu'il alourdit de plus de 25% le coût d'utilisation du compte courant."]
[null,"Divers\nBanque de proximité, généraliste, \"Tous publics\".\nInvestissement locatif, non domiciliation des revenus négociable\nPas de frais de dossier, contrairement à d'autres caisses régionales.\nFixe sur 30 ans.\nProduit \"Double détente\" sur 30 ans capé +2."]
[]
[]
[null,"*   Réservé à un usage strictement interne\n**  Informations données à titre indicatif, sans engagement contractuel et susceptibles de modifications\n***Toute information contraire doit immédiatement être communiqué au département Animation et Formation"]

{"sheet":"Caisse Epargne côte d'azur","index":13,"n_rows":34,"n_cols":7,"rows_kept":34,"cut":false,"hidden":true,"merged":[[32,1,32,10],[33,1,34,10],[22,1,23,5],[29,1,30,5],[31,1,31,5],[24,1,24,5],[31,6,31,10],[27,6,28,10],[29,6,30,10],[5,1,9,10],[10,1,12,10],[13,1,14,5],[13,6,14,10],[25,6,26,10],[15,1,18,5],[15,6,18,10],[19,1,20,5],[21,1,21,5],[21,6,21,10],[25,1,26,5],[19,6,20,10]]}
[]
[]
[]
[]
[]
[null,"Caisse d'épargne\nCôte d'Azur"]
[]
[]
[]
[]
[null,"3ème groupe bancaire Français ayant pour ambition de devenir '' La banque universelle \"\nImage de marque très forte auprès des Français, banque rajeunissant son image de marque\nCompte chèque rémunéré (dès le premier euro, avec le Forfait Satellis Essentiel, l'argent de votre compte de dépôt vous rapporte désormais 0,50% jusqu'à 2500 € \nPrise en charge gratuite du changement des coordonnées bancaires du client (Domilis)\nPas de facturation pour les retraits dans les distributeurs autre que CE, si utilisation des distributeurs CE obtention de points S'Miles qui permettent d'avoir des cadeaux\n\nSolution Packagée : '' Convention Satellis Essentiel '' tarif  73,16 euros\nLe pack comprend : Satellis Essentiel regroupe une carte Visa à débit immédiat, une assurance perte et vol des moyens de paiement, une facilité de caisse, les services de gestion des comptes à distance (Internet, minitel, téléphone et mobile), la rémunération du compte courant. En outre le titulaire est exonéré des frais de tenue de compte, des frais d'émission d'un chèque de banque, il bénéficie d'une assistance opposition, d'un service d'épargne automatique. Il peut également effectuer gratuitement un virement ponctuel et bénéficie d’un échéancier de virement permanent.\n\nCoût de la carte Visa sans pack : 34,82 euros par an\n\nSolution Assurance habitation :  '' Assurance Habitation Caisse d'Epargne ''\nFORMULE 1 '',Spécialement conçue pour les jeunes de moins de 26 ans et adaptée à leur mode de vie.\n- Une garantie en cas de vol jusqu’à 8 000 €.\n- Le rééquipement en valeur à neuf pour le matériel informatique, image et son de moins de 3 ans,\nFORMULE 2, les garanties essentielles pour assurer ce qui compte le plus pour vous sans monopoliser votre budget…\n- Un capital mobilier assuré jusqu’à 32 000 €\n- Les objets de valeur remboursés en cas de vol jusqu’à 3 200 €,\nFORMULE 3, pour vous assurer un remboursement optimal et la tranquillité d’esprit en cas de sinistre. \n- Un capital mobilier assuré jusqu’à 80 000 €.\n- Le rééquipement en valeur à neuf quel que soit le sinistre.\nEn cas de sinistre important, la prise en charge de plusieurs mensualités du crédit immobilier ou de vos loyers si vous êtes locataire.\nAvec la FORMULE 3+, des garanties et des options pour couvrir votre capital mobilier jusqu’à 162 000 €. "]
[]
[]
[null,"POINTS FORTS",null,null,null,null,"POINTS FAIBLES"]
[]
[null,"Modularité des échéances \nModularité possible et gratuite.\nA la hausse: augmentation des échéances non limitée si respect du risque\nA la baisse: possible sous réserve de ne pas descendre en dessous de l'échéance initiale du prêt.\nPossible dès la première date anniversaire et à chaque date anniversaire du prêt.",null,null,null,null,"Modularité des échéances\nImpossible de diminuer son échéance en dessous de l'échéance initiale du prêt.\nModularité possible uniquement à chaque date anniversaire du prêt.\nLa mensualité augmentée court pour 12 mois minimum jusqu'à la prochaine date anniversaire, ce qui est contraignant si un problème survient car il est impossible de baisser la mensualité avant la prochaine date anniversaire."]
[]
[]
[]
[null,"Report d'échéance\nPossible de reporter 12 échéances maximumm en 1 ou plusieurs fois, à partir de la 18ème échéance.",null,null,null,null,"Report d'échéance\nUn minimum de 3 échéances est demandé à chaque suspension (impossible de suspendre 1 seule échéance)\nUniquement possible à partir de la 18ème mensualité"]
[]
[null,"Transférabilité de prêt\nTransfert de prêt possible ",null,null,null,null,"Transférabilité de prêt\nSoumis à l'acceptation de l'agence gérant la relation avec le client, et si SACCEF OK, et que l'opération se fasse en moins de 2 mois. Frais de dossier à la discrétion de l'agence CE."]
[null,"Pénalités Remboursement Anticipé\nNégociable au cas par cas"]
[]
[null,"Garantie de prêt\nSACCEF a un coût initial moins cher que Crédit Logement"]
[null,"Garantie de prêt\nCaution SACCEF (moins chère que Crédit Logement)",null,null,null,null,"Garantie de prêt\nCaution SACCEF, non remboursable"]
[]
[null,null,null,null,null,null,"Assurances de Prêt\nPrivilégie son assurances groupe. \nAccorde peu d'accepation de délégation."]
[]
[null,"Tarification des services \nUne des moins chère du marché et un compte rémunéré gratuit.\nLe magazine Capital Octobre 2007 révèle que le coût annuel d'un compte est le moins cher de toute les CE.\nLa tenue de compte, la gestion par internet et les prélèvements automatiques sont gratuits.\nOffre diversifiée et complète pouvant satisfaire la clientèle la plus large.\nExemple de Pack : Formule Satellis Essentiel Plus ---> 7,43€ / mois."]
[]
[null,"Divers \nCompte chèque rémunéré.\nDélivrance du Livret A.\nLarge réseau d'agences de proximité sur l'ensemble du territoire.",null,null,null,null,"Divers \nPas de décote possible sur profil haut de gamme.\nPas de produits mixtes même sur 30 ans."]
[null,"\n"]
[null,"*   Réservé à un usage strictement interne\n**  Informations données à titre indicatif, sans engagement contractuel et susceptibles de modifications\n***Toute information contraire doit immédiatement être communiqué au département Animation et Formation"]

{"sheet":"Banque Populaire des Alpes","index":14,"n_rows":33,"n_cols":7,"rows_kept":33,"cut":false,"hidden":true,"merged":[[31,1,31,10],[32,1,33,10],[24,1,25,5],[21,6,22,10],[28,1,28,5],[29,6,30,10],[29,1,30,5],[26,1,27,5],[28,6,28,10],[24,6,25,10],[5,1,9,10],[10,1,12,10],[13,1,14,5],[13,6,14,10],[26,6,27,10],[15,1,18,5],[15,6,18,10],[19,6,20,10]]}
[]
[]
[]
[]
[]
[null,"Banque Populaire\ndes Alpes"]
[]
[]
[]
[]
[null,"163 agences de proximité en région.\nL'un des principaux réseaux bancaires de France, le groupe Banques Populaires est composé de 18 Banques Populaires régionales, comptant plus de 7.000.000 de clients dont 3.200.000  sociétaires\n2.878 agences en France et présent dans 68 pays\n\nSolution packagée : '' Convention Equipage Classique '' tarif 91,44 euros\nLe pack comprend :  La carte bancaire internationale : Visa Classic / Visa Premier / Visa Infinite suivant la convention choisie, l’assurance de vos moyens de paiement : protection contre les conséquences d’une perte ou d’un vol de vos moyens de paiement, clés, papiers et même contre le vol de votre mobile, l’autorisation de découvert pour prévenir les aléas de trésorerie assortie d'une assurance dècès toutes causes, la franchise d’agios de 7 €, le service d’informations juridiques pour des réponses personnalisées, les accès à la banque à distance.\n\nCoût de la carte Visa ou MasterCard sans pack : 43 euros par an\n\nSolution Assurance habitation :  '' Assur Bp Habitat '' : \n- En cas de sinistre, l'habitation est garantie en valeur de reconstruction à neuf à vie \n- En cas de sinistre ou de vol, le mobilier est garanti en valeur de remplacement à vie, \n- Remboursement à neuf jusqu'à 7 ans d’ancienneté sur tout le matériel électronique, électrique et de sport"]
[]
[]
[null,"POINTS FORTS",null,null,null,null,"POINTS FAIBLES"]
[]
[null,"Modularité des échéances\nModularité gratuite \n\nPossibilité d'augmentation jusqu'à 20% de l'échéance précédente\n\nPour la diminution de l'échéance, il ne faut pas que la durée du prêt se rallonge de plus de 2 ans",null,null,null,null,"Modularité des échéances\nPossible uniquement à partir de la 3ème année et limitée à 20%.\n\nModularité possible uniquement à chaque date anniversaire du prêt.\n\nLe client garde sa mensualité modulée sur 12 mois minimum.\n\nLa modularité n'est pas possible sur les prêts de 25 ans (ou négociable au cas par cas)."]
[]
[]
[]
[null,null,null,null,null,null,"Report des échéances\nImpossible."]
[]
[null,null,null,null,null,null,"Transfert de prêt\nImpossible."]
[]
[]
[null,null,null,null,null,null,"Pénalités en cas de remboursement anticipé\nNégociation possible à 1,5%, 3% si rachat à la concurrence."]
[]
[null,"Garantie\nSOCAMI, restitution intégrale du fond mutuel."]
[]
[null,"Assurances de prêt\nDélégation possible pour PREMIUM.\n",null,null,null,null,"Assurances de prêt \nFrais de délégation de 320€."]
[null,"Divers\nBanque de proximité et bien implantée en région Alpes, notamment en altitude.\n\nAvantages pour les primo accédants ou investisseurs car produit mixte sur 25 ans avec période fixe de 5, 7 ou 10 ans.\n\nVEFA : Franchise partielle et totale possible sur les intérêts intercalaires.",null,null,null,null,"Divers\nPas de prêt sur 30 ans.\n\nPas d'amortissement immédiat du capital."]
[]
[]
[null,"*   Réservé à un usage strictement interne\n**  Informations données à titre indicatif, sans engagement contractuel et susceptibles de modifications\n***Toute information contraire doit immédiatement être communiqué au département Animation et Formation"]

{"sheet":"Banque Populaire du Nord","index":15,"n_rows":31,"n_cols":7,"rows_kept":31,"cut":false,"hidden":true,"merged":[[15,1,17,5],[18,1,18,5],[15,6,17,10],[18,6,18,10],[5,1,9,10],[10,1,12,10],[13,1,14,5],[13,6,14,10],[30,1,31,10],[19,1,19,5],[24,1,25,5],[26,6,26,10],[26,1,26,5],[27,6,28,10],[27,1,28,5],[24,6,25,10],[21,1,23,5],[29,1,29,10],[20,6,20,10],[21,6,23,10],[19,6,19,10]]}
[]
[]
[]
[]
[]
[null,"Banque Populaire\ndu Nord"]
[]
[]
[]
[]
[null,"163 agences de proximité en région.\nL'un des principaux réseaux bancaires de France, le groupe Banques Populaires est composé de 18 Banques Populaires régionales, comptant plus de 7.000.000 de clients dont 3.200.000  socétaires\n2.878 agences en France et présent dans 68 pays\n\nSolution Packagée : '' Convention Equipage Classique '' tarif  91,44 euros\nLe pack comprend :  La carte bancaire internationale : Visa Classic / Visa Premier / Visa Infinite suivant la convention choisie, l’assurance de vos moyens de paiement : protection contre les conséquences d’une perte ou d’un vol de vos moyens de paiement, clés, papiers et même contre le vol de votre mobile, l’autorisation de découvert pour prévenir les aléas de trésorerie assortie d'une assurance dècès toutes causes, la franchise d’agios de 7 €, le service d’informations juridiques pour des réponses personnalisées, les accès à la banque à distance.\n\nCoût de la carte Visa ou MasterCard sans pack : 43 euros par an\n\nSolution Assurance habitation : '' Assur Bp Habitat '' : \n- En cas de sinistre, l'habitation est garantie en valeur de reconstruction à neuf à vie \n- En cas de sinistre ou de vol, le mobilier est garanti en valeur de remplacement à vie, \n- Remboursement à neuf jusqu'à 7 ans d’ancienneté sur tout le matériel électronique, électrique et de sport"]
[]
[]
[null,"POINTS FORTS",null,null,null,null,"POINTS FAIBLES"]
[]
[null,"Modularité des échéances\nPossible 3 fois sans frais.\nPossibilité d'augmentation en restant dans les normes. \nPour la diminution de l'échéance, il ne faut pas que la durée du prêt se rallonge de plus de 2 ans.",null,null,null,null,"Modularité des échéances\nPossible uniquement à partir de la 3ème année et limitée à 20%\n"]
[]
[]
[null,"Report des échéances\nPossible de suspendre 24 échéances en une ou plusieurs fois."]
[null,null,null,null,null,null,"Transferabilité du prêt\nImpossible."]
[null,null,null,null,null,null,"Pénalités en cas de remboursement anticipé\nTrès difficile à obtenir"]
[null,"Garantie\nAvec SOCAMI, restitution intégrale du fond mutuel.\nPossibilité de prendre CASDEN, SACCEF."]
[]
[]
[null,"Assurances de prêt\nDélégation MGEN possible.",null,null,null,null,"Assurances de prêt \nMajoration des conditions si délégation."]
[]
[]
[null,"Divers \nFinancement à 110% possible.",null,null,null,null,"Divers\nPas de prêt sur 30 ans.\nFranchise partielle uniquement pour la VEFA."]
[]
[]
[null,"*   Réservé à un usage strictement interne\n**  Informations données à titre indicatif, sans engagement contractuel et susceptibles de modifications\n***Toute information contraire doit immédiatement être communiqué au département Animation et Formation"]

{"sheet":"Crédit du Nord","index":16,"n_rows":26,"n_cols":7,"rows_kept":26,"cut":false,"hidden":true,"merged":[[5,1,9,10],[10,1,12,10],[13,1,14,5],[13,6,14,10],[19,6,19,10],[16,6,16,10],[25,1,26,10],[24,1,24,10],[15,6,15,10],[15,1,15,5],[21,1,21,5],[23,1,23,5],[17,1,17,5],[16,1,16,5],[18,1,18,5],[22,1,22,5],[23,6,23,10],[22,6,22,10]]}
[]
[]
[]
[]
[]
[null,"Crédit du Nord "]
[]
[]
[]
[]
[null,"Le groupe Crédit du Nord est une filiale à 80% du groupe Société Générale, et à 20% du groupe Dexia. \nLe groupe Crédit du Nord est aujourd'hui une fédération de 7 banques régionales : le Crédit du Nord, la Banque Courtois dans le Sud Ouest, la banque Kolb dans l'Est, la banque Laydernier en Haute Savoie, Savoie, Ain et Isère, la banque Muger dans le Centre, la banque Rhône Alpes, la banque Tarneaud dans le Centre Ouest Atlantique. \n\nBanque jeune et dynamique qui cible une clientèle de jeunes cadres au profils évolutifs.\nBanque élitiste (3000€ pour un celibataire et 5000€ pour un couple) en contre partie les conseillers du CDN sont très compétents et disponibles pour répondre éfficacement au besoin de cette clientèle exigente.\nAssurance compétitive à environ 0,20% pour les jeunes.\nTarification assez performante si apport minimum 20%\nProduits phare comme : \"Crédit Global immobilier\" incluant le prêt relai et le prêt principal \"Libertimmo Cape -1\" qui ne peut que baisser dans la limite de -1%\nForte modularité des échéances et très rapide (dès 6 mois)\nAcceptation possible d'Assurances De Prêts externes.\n\nSolution Packagée : '' Convention Norplus Option Visa '' tarif 92 euros\nLe pack comprend :  Norplus Visa Comprend : une carte Visa à débit immédiat (ou différé) avec garantie achat, une assurance perte et vol \ndes moyens de paiement ainsi que les frais d'opposition et le renouvellement de la carte, une facilité de caisse avec 8 euros d'exonération \nd'agios, une carte de crédit revolving (avec ou sans package) et des chèques de banque gratuits.\nEn option, le titulaire accède à divers services avec 20% de remises : service Internet, assurances diverses, crédit, etc…). \n\nCoût de la carte Visa sans pack : 37 euros par an\n\nSolution Assurance habitation : Partenaire Eurofil"]
[]
[]
[null,"POINTS FORTS",null,null,null,null,"POINTS FAIBLES"]
[]
[null,"Modularité des échéances\nModularité possible et gratuite \nDès la 6ème échéance et non limitée\nHausse : +100% du montant de l'échéance précédente\nBaisse : aucun plancher tant que la durée initiale du crédit est respectée"]
[null,"Report des échéances\nReport possible et gratuit ",null,null,null,null,"Report des échéances\nSeulement une échéance par an avec interval de 12 mois minimum"]
[null,"Transférabilité du prêt \n"]
[null,"Transfert de prêt possible sans frais "]
[null,null,null,null,null,null,"Pénalités en cas de remboursement anticipé\nExonération d'indemnités en cas de remboursement anticipé difficile à négocier"]
[]
[null,"Assurances de prêt\nDélégation d'assurance possible (Premium)"]
[null,null,null,null,null,null,"Tarification des services\nLe magazine Capital Octobre 2007 révèle que le forfait CDN est médiocre et contient des services superflus (assurance, coffre fort…) et ne propose pas un accès internet\nElle fait partie selon ce même magazine des banques les plus chères (carte bancaire onéreuse et frais élevés pour gérer ses comptes via internet)"]
[null,"Divers\nOffre de services haut de gamme\n20% de réduction sur certaines opérations si souscription du pack Norplus",null,null,null,null,"Divers \nTrop élitiste, pas de financement à 110%, 20% d'apport minimum.\nProximité des points de vente limitée par rapport à d'autres établissements\nInternet non inclus dans le pack Norplus\nPas de mixte et pas de 30 ans"]
[]
[null,"*   Réservé à un usage strictement interne\n**  Informations données à titre indicatif, sans engagement contractuel et susceptibles de modifications\n***Toute information contraire doit immédiatement être communiqué au département Animation et Formation"]

{"sheet":"Crédit Mutuel IDF","index":17,"n_rows":33,"n_cols":7,"rows_kept":33,"cut":false,"hidden":true,"merged":[[5,1,9,10],[10,1,12,10],[13,1,14,5],[13,6,14,10],[21,1,23,5],[15,1,19,5],[20,1,20,5],[15,6,19,10],[20,6,20,10],[21,6,23,10],[32,1,33,10],[29,1,30,5],[24,1,25,5],[26,1,26,5],[28,1,28,5],[27,1,27,5],[29,6,30,10],[28,6,28,10],[27,6,27,10],[31,1,31,10]]}
[]
[]
[]
[]
[]
[null,"Crédit Mutuel Ile de France"]
[]
[]
[]
[]
[null,"Deuxième banque de détail en France, 1er bancassureur de France, 2ème banque dans le financement de l'habitat\nLe groupe Crédit Mutuel comprend le réseau du Crédit Mutuel et l’ensemble de ses filiales, dont le CIC\n\nTarification avantageuse pour les enseignants et professions médicales\nCaution Crédit Mutuel Habitat (une des moins chère du marché)\n\nSolution Packagée : '' Convention Eurocompte Confort '' tarif 108 euros\nLe pack comprend :  Carte Visa à débit immédiat avec garantie achat, assurance perte et vol des moyens de paiement, exonération des frais de tenue de compte et d'opposition (sur carte et chèques), facilité de caisse, services de banque à distance (service Internet, réduction sur le service d'alertes sur compte), franchise de 4 virements externes gratuits par mois via Internet, franchise de 6 retraits gratuits, assurance décès, service d'épargne automatique, prime d'épargne sur le livret Fidélité, 3 chèques de banque gratuits, envoi des chéquiers en pli simple, carte révolving et Payweb Card incluses.\nEn option : découvert Souplesse, réduction sur les frais de dossier des crédits auto ou consommation.\n\nCoût de la carte Visa ou MasterCard sans pack : 33,33 euros\n\nSolution Assurance Habitation : \"Assurance Habitation du Crédit Mutuel\"\nVous choisissez parmi quatre offres celle qui correspond le mieux à vos exigences pour couvrir votre domicile et vos biens.\nSelon les caractéristiques de votre habitation et de votre budget, vous fixez votre niveau de garantie et de franchise. \nVous disposez aussi d'un large choix d'options pour renforcer votre protection. \n\nEn plus, dès que vous avez accumulé 2 années d'assurance sans sinistre, \nvous bénéficiez d'un bonus de franchise. Il s'agit d'une prise en charge partielle de votre franchise. \nCe bonus augmente tous les ans et peut, à terme, couvrir intégralement votre franchise, vous garantissant ainsi une meilleure \nindemnisation en cas de sinistre."]
[]
[]
[null,"POINTS FORTS",null,null,null,null,"POINTS FAIBLES"]
[]
[null,"Modularité des échéances\nModularité gratuite. \nA la hausse: 5% minimum de l'échéance précédente, pas de maximum (soumis à étude).\nA la baisse: il ne faut pas que la durée du prêt dépasse de plus de 3 ans la durée initiale.",null,null,null,null,"Modularité des échéances\nFrais à la discrétion de l'agence gérant la relation avec le client."]
[]
[]
[]
[]
[null,null,null,null,null,null,"Report des échéances\nImpossible"]
[null,"Transférabilité du prêt \nPossible sans frais",null,null,null,null,"Transférabilité du prêt \nConditions contraignantes : soumis à accord de la caisse de CM et de l'organisme de caution."]
[]
[]
[null,"Pénalités de Remboursement Anticipé\nExonération d'Indemnités de Remboursement Anticipé négociables"]
[]
[null,"Garantie de prêt\nCaution CMH la moins chère du marché"]
[null,"Assurances de Prêt\nAssurance De Prêt compétitive avec l'offre ACM.\n\nL'offre ACE (tarification agressive pour les jeunes) permet la distinction fumeur/non fumeur et offre les mêmes garanties que le contrat groupe ACM.\n\nDélégation possible avec Télévie.",null,null,null,null,"Assurances de Prêt\nPas de liberté donnée au client pour choisir son Assurance De Prêt.\nL'ADP groupe (ACM) ne propose pas de protection famille, ne fait pas de distinction fumeur/non fumeur, n' a pour base de remboursement que la seule perte de revenu de l'assuré.\nElle n'exonère pas l'assuré du paiement des cotisations lors des prises en charge.\nLe contrat ACM et ACE (jeunes) ne prennent en compte qu'une invalidité totale (66% minimum), la perte de salaire est prise en charge."]
[null,"Tarification des services \nExemple de tarification :Eurocompte Duo confort --> 10,64€ / mois.",null,null,null,null,"Tarification des services \nLe magazine Capital Octobre 2007 révèle que le forfait du Crédit Mutuel est un des 2 plus chers à l'achat. \nCe forfait augmente dans tous les cas, l'accès internet est cher (38 euros par an)"]
[null,"Divers \nOffre souple, avec une spécificité pour les enseignants et certaines professions médicales.\n\nOffre crédit large avec possibilité de financement jusqu'à 30 ans  avec une offre à taux mixte (taux fixe 10 ans et variable)\n\nAssurance MRH compétitive avec Assurance Crédit Mutuel (protection vol avec système d'alarme garanti 4ans, à prix réduit avec 1 an de télésurveillance 24h sur 24h offert)\n\nImmoSouple 1 : taux fixe 10 ans sur emprunt de 11 à 30 ans.\nTaux fixe 5 ans sur emprunt à 30 ans.\n\nVEFA : Report possible du paiement du capital et des intérêts, dans le cadre du financement de la construction/acquisition d'un logement neuf/ancien/travaux d'aménagement pour Résidence Principale/Secondaire/Locative. Durée maxi = 24 mois.",null,null,null,null,"Divers \nRigidité dans la gestion des comptes courants.\n\nPeu de remboursement de la côtisation à la Garantie CMH (maxi 152€)."]
[]
[]
[null,"*   Réservé à un usage strictement interne\n**  Informations données à titre indicatif, sans engagement contractuel et susceptibles de modifications\n***Toute information contraire doit immédiatement être communiqué au département Animation et Formation"]

{"sheet":"Crédit Mutuel Océan","index":18,"n_rows":35,"n_cols":7,"rows_kept":35,"cut":false,"hidden":true,"merged":[[5,1,9,10],[10,1,12,10],[13,1,14,5],[13,6,14,10],[21,6,21,10],[34,1,35,10],[15,1,19,5],[24,1,25,5],[15,6,19,10],[24,6,25,10],[20,1,20,5],[22,1,22,5],[26,1,27,5],[28,1,30,5],[20,6,20,10],[33,1,33,10],[23,1,23,5],[28,6,30,10],[26,6,27,10]]}
[]
[]
[]
[]
[]
[null,"Crédit Mutuel Océan"]
[]
[]
[]
[]
[null,"Deuxième banque de détail en France, 1er bancassureur de France, 2ème banque dans le financement de l'habitat\nLe groupe Crédit Mutuel comprend le réseau du Crédit Mutuel et l’ensemble de ses filiales, dont le CIC.\n\nTarification avantageuse pour les enseignants.\n\nSolution Packagée : '' Convention Eurocompte Confort ''\nLe pack comprend :  Carte Visa à débit immédiat avec garantie achat, assurance perte et vol des moyens de paiement, exonération des frais de tenue de compte et d'opposition (sur carte et chèques), facilité de caisse, franchise de 6 retraits gratuits, assurance décès, service d'épargne automatique, prime d'épargne sur le livret Fidélité, 3 chèques de banque gratuits, envoi des chéquiers en pli simple, carte révolving et Payweb Card incluses.\nEn option : découvert Souplesse, réduction sur les frais de dossier des crédits auto ou consommation.\n(L'accès internet facturé hors package)\n\nCoût de la carte MasterCard sans pack : 33 euros par an\n\nSolution Assurance Habitation : \"Assurance Habitation du Crédit Mutuel\"\nVous choisissez parmi quatre offres celle qui correspond le mieux à vos exigences pour couvrir votre domicile et vos biens.\nSelon les caractéristiques de votre habitation et de votre budget, vous fixez votre niveau de garantie et de franchise. \nVous disposez aussi d'un large choix d'options pour renforcer votre protection. \nEn plus, dès que vous avez accumulé 2 années d'assurance sans sinistre, \nvous bénéficiez d'un bonus de franchise. Il s'agit d'une prise en charge partielle de votre franchise. \nCe bonus augmente tous les ans et peut, à terme, couvrir intégralement votre franchise, vous garantissant ainsi une meilleure \nindemnisation en cas de sinistre.\n"]
[]
[]
[null,"POINTS FORTS",null,null,null,null,"POINTS FAIBLES"]
[]
[null,"Modularité des échéances\nGratuite. \nA la hausse, 5% minimum de l'échéance précédente, pas de maximum (soumis à étude).\nA la baisse, il ne faut pas que la durée du prêt dépasse de plus de 3 ans la durée initiale.",null,null,null,null,"Modularité des échéances\nFrais à la discrétion de l'agence gérant la relation avec le client."]
[]
[]
[]
[]
[null,"Report d'échéance\nGratuit, faisable jusqu'à 6 mois, uniquement différé du capital, utilisable dés le départ, une seule fois en solution de dépannage.",null,null,null,null,"Report d'échéance\nNon contractuel dans l'offre mais techniquement possible, au cas par cas."]
[null,null,null,null,null,null,"Transférabilité du prêt \nNon"]
[null,"Pénalité de Remboursement Anticipé\nExonération des Indemnité de Remboursement Anticipé automatique : fait partie de l'offre CM Océan."]
[null,"Garantie de prêt\nGarantie Crédit Mutuel Habitat, la caution la moins chère en coût initial."]
[null,"Assurances de Prêt\nAssurance De Prêt compétitive avec ACM.\n\nACE (Tarification agressive pour les jeunes) permet la distinction fumeur/non fumeur et offre les mêmes garanties que le contrat groupe ACM.\n\nPossible uniquement de proposer Télévie en délégation.\n\n",null,null,null,null,"Assurances de Prêt\nFrais de délégation à prendre en compte de 78,66€\nPas de liberté donnée au client pour choisir son Assurance De Prêt\nL'ADP groupe (ACM) ne propose pas de protection famille, ne fait pas de distinction fumeur/non fumeur, n' a pour base de remboursement que la seule perte de revenu de l'assuré.\nElle n'exonère pas l'assuré du paiement des cotisations lors des prises en charge\nLe contrat ACM et ACE (jeunes) ne prennent en compte qu'une invalidité totale (66% minimum), la perte de salaire est prise en charge"]
[]
[null,"Tarification des services \nExemple de tarification :Eurocompte  --> 6,08€ / mois.\nAmortissement immédiat possible sur le prêts en VEFA.",null,null,null,null,"Tarification des services \nLe magazine Capital Octobre 2007 révèle que le forfait du Crédit Mutuel est un des 2 plus chers à l'achat. Ce forfait augmente dans tous les cas la facture"]
[]
[null,"Divers\nLe Crédit Mutuel est largement implanté sur le territoire français.\nOffre souple, avec une spécificité pour les enseignants et certaines professions médicales.",null,null,null,null,"Divers \nRigidité dans la gestion des comptes courants\nPeu de remboursement de la côtisation à la Garantie CMH (maxi 152€)"]
[]
[]
[]
[]
[]
[null,"*   Réservé à un usage strictement interne\n**  Informations données à titre indicatif, sans engagement contractuel et susceptibles de modifications\n***Toute information contraire doit immédiatement être communiqué au département Animation et Formation"]

{"sheet":"Crédit Mutuel Sud Est","index":19,"n_rows":30,"n_cols":7,"rows_kept":30,"cut":false,"hidden":true,"merged":[[5,1,9,10],[10,1,12,10],[13,1,14,5],[13,6,14,10],[23,1,24,5],[23,6,24,10],[15,1,18,5],[22,1,22,5],[20,1,20,5],[21,1,21,5],[19,6,19,10],[21,6,21,10],[15,6,18,10],[22,6,22,10],[29,1,30,10],[27,1,27,5],[27,6,27,10],[25,1,26,5],[25,6,26,10],[28,1,28,10]]}
[]
[]
[]
[]
[]
[null,"Crédit Mutuel Sud Est"]
[]
[]
[]
[]
[null,"Deuxième banque de détail en France, 1er bancassureur de France, 2ème banque dans le financement de l'habitat\nLe groupe Crédit Mutuel comprend le réseau du Crédit Mutuel et l’ensemble de ses filiales, dont le CIC\n\nTarification avantageuse pour les enseignants\n\nSolution Packagée : '' Convention Eurocompte Confort '' \nLe pack comprend :  Carte Visa à débit immédiat avec garantie achat, assurance perte et vol des moyens de paiement, exonération des frais de tenue de compte et d'opposition (sur carte et chèques), facilité de caisse, services de banque à distance (service Internet, réduction sur le service d'alertes sur compte), franchise de 4 virements externes gratuits par mois via Internet, franchise de 6 retraits gratuits, assurance décès, service d'épargne automatique, prime d'épargne sur le livret Fidélité, 3 chèques de banque gratuits, envoi des chéquiers en pli simple, carte révolving et Payweb Card incluses.\nEn option : découvert Souplesse, réduction sur les frais de dossier des crédits auto ou consommation.\n\nCoût de la carte Visa ou MasterCard sans pack : 33,33 euros\n\nSolution Assurance Habitation : \"Assurance Habitation du Crédit Mutuel\"\nVous choisissez parmi quatre offres celle qui correspond le mieux à vos exigences pour couvrir votre domicile et vos biens.\nSelon les caractéristiques de votre habitation et de votre budget, vous fixez votre niveau de garantie et de franchise. \nVous disposez aussi d'un large choix d'options pour renforcer votre protection. \nEn plus, dès que vous avez accumulé 2 années d'assurance sans sinistre, \nvous bénéficiez d'un bonus de franchise. Il s'agit d'une prise en charge partielle de votre franchise. \nCe bonus augmente tous les ans et peut, à terme, couvrir intégralement votre franchise, vous garantissant ainsi une meilleure \nindemnisation en cas de sinistre."]
[]
[]
[null,"POINTS FORTS",null,null,null,null,"POINTS FAIBLES"]
[]
[null,"Modularité des échéances\nGratuite. A la hausse, 5% minimum de l'échéance précédente, pas de maximum (soumis à étude).\nA la baisse, il ne faut pas que la durée du prêt dépasse de plus de 3 ans la durée initiale.",null,null,null,null,"Modularité des échéances\nObligation de réétudier le dossier à chaque modulation\n"]
[]
[]
[]
[null,null,null,null,null,null,"Report d'échéance\nImpossible"]
[null,"Transfert de prêt\nPossible uniquement si garantie caution CMH"]
[null,"Pénalités de Remboursement Anticipé\nExonération des Indemnités de Remboursement Anticipé à justifier",null,null,null,null,"Pénalités de Remboursement Anticipé\nL'exonération des Indemnités de Remboursement Anticipé doit être systématiquement justifiée."]
[null,"Garantie de prêt\nGarantie CMH, la caution la moins chère en coût initial"]
[null,"Assurances de Prêt\nL'Assurance De Prêt est compétitive avec ACM.\nL'offre ACE a une tarification agressive pour les jeunes : permet la distinction fumeur/non fumeur et offre les mêmes garanties que le contrat groupe ACM.\nPossibilité Premium, Télévie et autres contrats externes\n",null,null,null,null,"Assurances de Prêt\nLiberté limitée donnée au client pour choisir son Assurance De Prêt.\nL'ADP groupe (ACM) ne propose pas de protection famille, ne fait pas de distinction fumeur/non fumeur, n' a pour base de remboursement que la seule perte de revenu de l'assuré.\nElle n'exonère pas l'assuré du paiement des cotisations lors des prises en charge"]
[]
[null,"Tarification des services \nExemple de tarification : Eurocompte  --> 6,25€ / mois",null,null,null,null,"Tarification des services \nLe magazine Capital Octobre 2007 révèle que le forfait du Crédit Mutuel est un des 2 plus chers à l'achat. Ce forfait augmente dans tous les cas la facture"]
[]
[null,"Divers \nLe Crédit Mutuel est largement implanté sur le territoire français.\nOffre souple, avec une spécificité pour les enseignants et certaines professions médicales, professions de armées et juridiques\nProduit fixe 5 ans sur 30 ans",null,null,null,null,"Divers \nPeu de remboursement de la côtisation à la Garantie CMH (maxi 152€)\nRigidité dans la gestion des comptes courants\nPas de produits mixtes"]
[]
[null,"*   Réservé à un usage strictement interne\n**  Informations données à titre indicatif, sans engagement contractuel et susceptibles de modifications\n***Toute information contraire doit immédiatement être communiqué au département Animation et Formation"]

{"sheet":"HSBC","index":20,"n_rows":29,"n_cols":7,"rows_kept":29,"cut":false,"hidden":true,"merged":[[17,1,17,5],[18,6,18,10],[23,1,23,5],[28,1,29,10],[19,6,19,10],[24,6,26,10],[22,6,22,10],[23,6,23,10],[24,1,26,5],[20,1,20,5],[22,1,22,5],[27,1,27,10],[6,1,10,10],[11,1,13,10],[14,1,15,5],[14,6,15,10],[16,1,16,5],[16,6,16,10]]}
[]
[]
[]
[]
[]
[]
[null,"HSBC"]
[]
[]
[]
[]
[null,"Banque patrimoniale apportant un service spécialisé et très professionnel pour une clientèle ''Haut de gamme''\nPrésente dans 82 pays du monde sur plus de 10 000 points de vente\nHSBC se revendique établissement haut de gamme à vocation internationale\nService client étroit et de bonne qualité. Les chargés de clientèle gèrent des portefeuilles moins lourds\n\nSolution Packagée : '' Convention HSBC Dynamique '' tarif  90 euros\nLe pack comprend : HSBC Dynamique inclut : une carte Visa Internationale, les frais de banque au quotidien, tels que les frais de tenue de compte, les frais liés aux virements, les frais de retraits déplacés, un service de virements automatiques vers un compte épargne. Des produits d'assurance, pour les moyens de paiement (frais d'opposition inclus), assurance bonne livraison Internet, assurance décès accidentel. Concernant la banque à distance : gestion des comptes via Internet, minitel, mobile et téléphone. Sur le volet découvert : facilité de trésorerie dont le plafond est fixé à 3 000 euros, exonération d’agios à hauteur de 7.50 EUR par trimestre.\n\nPossibilité de souscrire à l’option internationale, HSBC Passeport.\n\nCoût de la carte Visa sans pack : 33 euros par an.\n\nSolution Assurance habitation : '' HSBC Habitation '' permet d’assurer votre logement que vous soyez propriétaire ou locataire \ngrâce aux formules Compact et Confort, ou bien propriétaire non occupant grâce à la formule PNO.\n• La formule COMPACT permet d’assurer les petites surfaces de 1 à 2 pièces en bénéficiant des garanties complètes à un prix \nspécialement adapté pour les étudiants.\n• La formule CONFORT permet d’adapter les garanties aux spécificités de votre habitation grâce à un large choix d’options et \nd’extensions de garanties.\n• Le contrat \"Propriétaire Non Occupants\" (PNO) permet d'assurer les propriétaires de maisons ou d'appartements \nqu'ils n'occupent pas ou qu'ils louent à des tiers. "]
[]
[]
[null,"POINTS FORTS",null,null,null,null,"POINTS FAIBLES"]
[]
[null,"Modularité des échéances\nModularité gratuite\nModularité puissante: doublement de la mensualité initiale",null,null,null,null,"Modularité des échéances\nModularités limitées à 5 pendant la vie du prêt"]
[null,"Possible dès la 12 ème échéance, 5 fois sur toute la durée du prêt, 12 mois minimum entre chaque modulation\nHausse : doublement de la mensualité initiale\nBaisse : la durée du crédit ne peut être rallongée de plus de 2 ans"]
[null,null,null,null,null,null,"Report d'échéance \nImpossible"]
[null,null,null,null,null,null,"Transfert de prêt\nImpossibilité de transférer son prêt sur une nouvelle acquisition"]
[null,"Pénalités de Remboursement Anticipé\nExonération d'Indemnité de Remboursement Anticipé au cas par cas"]
[]
[null,"Assurances de Prêt\nAssurance groupe ERISA calculée sur le Capital Restant Du.\nDélégations possibles au cas par cas.",null,null,null,null,"Assurances de Prêt\nAssurance groupe ERISA élevée (0,33% en moyenne)\nL'ADP groupe ne propose pas de protection famille, ne fait de distinction fumeur/non fumeur. \n\nElle n'exonère pas l'assuré du paiement des cotisations pendant la prise en charge par l'assureur"]
[null,"Tarification des services\nLe magazine Capital Octobre 2007 révèle que ce forfait ne contient aucune mauvaise surprise et est bien conçu\nPour Capital la tarification n'est pas chère avec un bon point pour les retraits à l'étranger Offre \"HSBC Dynamique\" . \nExemple de tarification : HSBC Dynamique  --> 7,5€ / mois\n",null,null,null,null,"Tarification des services\nLe magazine Capital Octobre 2007 révèle que le prix de ce forfait est élevé"]
[null,"Divers\nVEFA : La franchise totale des intérêts intercalaires est possible."]
[]
[]
[null,"\n"]
[null,"*   Réservé à un usage strictement interne\n**  Informations données à titre indicatif, sans engagement contractuel et susceptibles de modifications\n***Toute information contraire doit immédiatement être communiqué au département Animation et Formation"]

{"sheet":"L.C.L ","index":21,"n_rows":32,"n_cols":12,"rows_kept":32,"cut":false,"hidden":true,"merged":[[23,6,23,10],[24,6,25,10],[6,1,10,10],[11,1,13,10],[14,1,15,5],[14,6,15,10],[20,1,22,5],[16,6,19,10],[16,1,19,5],[20,6,22,10],[24,1,25,5],[27,6,27,10],[27,1,27,5],[31,1,32,10],[29,6,29,10],[28,1,28,5],[28,6,28,10],[29,1,29,5],[30,1,30,10]]}
[]
[]
[]
[]
[]
[]
[null,"LCL Le Crédit Lyonnais"]
[]
[]
[]
[]
[null,"\" Avec LCL demandez plus à votre argent \"\nLCL s'est engagé à en donner plus à ses clients pour les conquérir et les fidéliser, filiale du Groupe CASA (Crédit Agricole)\nL'offre packagée la moins chère du marché\nConditions compétitives pour les jeunes\nBanque généraliste et '' Tous publics '' avec un vaste réseau d'agences\n\nSolution Packagée : '' Convention Formule Zen '' tarif 55 euros\nLe pack comprend : A partir d'un socle de services obligatoires, le client choisit ensuite les produits à la carte.\nLe socle commun comprend : la mise en place et le renouvellement de la facilité de caisse (exonération jusqu'à 8,00 EUR par trimestre), une assurance décès accidentel, une assurance des moyens de paiement, la synthèse annuelle des avoirs. La consultation des comptes par Internet étant gratuite hors package.\nEnsuite, les services de banque au quotidien bénéficient d'une réduction de 20% sur le tarif de base (carte, LCL Avertis, Sécurimobile standard,          e-sécurillon, frais bancaires, Icomme Info, Lcl Interactif)\n\nCoût de la carte Visa sans pack : 37 euros\n\nSolution Assurance habitation : \nAssurance Habitation Jeunes Actifs\nPour les 18-35 ans locataires d'un studio ou d'un 2 pièces. \nAssurance Habitation Standing\nPour une garantie optimale : Indemnisation au prix du neuf, franchise supprimée...\n"]
[]
[]
[null,"POINTS FORTS",null,null,null,null,"POINTS FAIBLES"]
[]
[null,"Modularité des échéances\nModularité gratuite\nA partir de la 3ème année\nHausse : +10%  de l’échéance précédente\nBaisse : allongement de la durée initiale + 2 ans. Entre chaque modulation un délai de 12 mois mini est requis",null,null,null,null,"Modularité des échéances\nPossible uniquement à partir de la 3ème année et limitée à 10%\n12 mois minimum entre chaque modulation",null,null,null,null," "]
[]
[]
[]
[null,"Report des échéances \nReport des échéances gratuit\n2 échéances mensuelles consécutives maximum par an. ",null,null,null,null,"Report des échéances\nPossible uniquement à partir de la 25ème échéance. \nLimité à 9 échéances au total sur toute la durée du prêt"]
[]
[]
[null,null,null,null,null,null,"Transférabilité du prêt\nImpossible"]
[null,"Pénalités de Remboursement Anticipé\nExonération d'indemnités de remboursement anticipé possible"]
[]
[]
[null,"Assurances de prêt\nDélégation négociable au cas par cas",null,null,null,null,"Assurances de prêt\nAssurance De Prêt groupe (AVF 500) chère (entre 0,33% et 0,49%) et limitée en garantie\nL'ADP groupe ne couvre que l'invalidité totale à partir de 66%\nElle ne propose pas de protection famille et ne fait pas de distinction fumeur/non fumeur.\nElle rembourse l'assuré si et seulement si il y a une perte de revenu\nElle n'exonère pas l'assuré du paiement des cotisations lors des prises en charge par l'assureur"]
[null,"Tarification des services \nOffre \"ZEN\" complète et adaptée selon les profils clients. \nExemple de tarification : ZEN avec Carte Visa Classic\n --> 6,93€ / mois",null,null,null,null,"Tarification des services\nLe magazine Capital ne conseille pas ce forfait et préconise de s'en tenir à la facturation à la carte des services qui fait économiser de 26€  à 29€ / an.\n\nBeaucoup de services sont plus chers que la moyenne nationale : alors que la moyenne pour un rejet d'un chèque est de 59 euros elle est de 89 euros au LCL , un prélèvement sans provision est de 25,50 euros trop cher pour le magazine Capital\n"]
[null,"Divers \nPas de frais de dossier pour les prêts immobiliers.\nPossibilité de financement jusqu'à 30 ans fixe 5 ans.\nRIB invariant lors de changement d’agence.\nVEFA : Franchise partielle ou totale admise pour le paiement des intérêts intercalaires.",null,null,null,null,"Divers \nPas de financement 110%.\nLourdeurs administratives et manque de réactivité.\nPas de formule de financement mixte (fixe et révisable) intéressant notamment pour les jeunes.\n\nVEFA : Commission d'engagement prélevée par le LCL dans le cadre de construction et de VEFA sur les montants non encore débloqués par le client. Représente environ 1,30% des sommes non encore utilisées\nNe pas oublier de la négocier"]
[]
[null,"*   Réservé à un usage strictement interne\n**  Informations données à titre indicatif, sans engagement contractuel et susceptibles de modifications\n***Toute information contraire doit immédiatement être communiqué au département Animation et Formation"]

{"sheet":"Société Générale","index":22,"n_rows":26,"n_cols":7,"rows_kept":26,"cut":false,"hidden":true,"merged":[[5,1,9,10],[10,1,12,10],[13,1,14,5],[13,6,14,10],[25,1,26,10],[22,1,23,5],[15,1,15,5],[21,6,21,10],[20,6,20,10],[16,1,16,5],[17,6,17,10],[18,6,18,10],[24,1,24,10],[15,6,15,10],[22,6,23,10],[21,1,21,5],[20,1,20,5],[16,6,16,10],[18,1,18,5]]}
[]
[]
[]
[]
[]
[null,"Société Générale"]
[]
[]
[]
[]
[null,"3ème banque de financement et d'investissement de la zone euro\nBanque internationale et constituée de près de 3 000 points de vente en France\nUn des services bancaires sur Internet les plus complet et gratuit\n\nSolution Packagée : ''Convention Jazz' tarif 89 euros\nLe pack comprend : Carte Visa à débit immédiat ou différé, réduction sur la deuxième carte de paiement et les suivantes, assurance perte et vol des moyens de paiement, frais d'opposition sur chèques, cartes et prélèvements, service opposition toutes cartes, 3 chèques de banque, relevé multicomptes annuel, facilité de caisse de 500 EUR, franchise de 8 retraits déplacés gratuits par mois. Service de banque à distance (gratuit hors package). Le titulaire bénéficie en outre d'une assurance garantie prix et du programme de fidélité Filigrane.\nEn option à tarifs préférentiels : réduction de 25% sur le service d'alertes (Messalia), carte de crédit renouvelable.\n\nCoût de la carte Visa sans pack : 34 euros par an\n\nSolution Assurance habitation : '' Assurance habitation Société Générale '' (SOGESSUR) \nFormule INDISPENSABLE  est conçue pour les locataires d'un appartement de 1 à 2 pièces en résidence principale.\nLes formules BIEN ETRE et A NEUF sont destinées aux locataires ou propriétaires de résidences principales ou secondaires jusqu'à 12 pièces \n"]
[]
[]
[null,"POINTS FORTS",null,null,null,null,"POINTS FAIBLES"]
[]
[null,"\n",null,null,null,null,"Modularité des échéances \nModulation payante  \nModularité accessible qu'à partir de la 3ème année\nModularité limitée à 30% de l'échéance précédente(sur toute la vie du prêt)\nModularité excessivement chère (0,50% du capital emprunté mini 300€ maxi 900€ )\nModularité limitée car un délai minimum de 12 mois est imposé entre 2 modulations"]
[null,"Report des échéances \nPossibilité de reporter une ou plusieurs échéances",null,null,null,null,"Report des échéances \nLe report d'échéance est payant à la Société Générale en cas de report, paiement des intérêts obligatoire plus Assurance"]
[null,null,null,null,null,null,"Pénalités de Remboursement Anticipé\nExonération d'indemnités de remboursement anticipé difficile à négocier"]
[null,"Transférabilité du prêt \nTransfert de prêt possible, l'emprunteur a la possibilité de transférer son prêt sur une autre acquisition, il garde ainsi le bénéfice des conditions obtenues dans un marché actuel de hausse de taux"]
[]
[null,"Assurances de prêt\nPossibilité de délégation d'assurance",null,null,null,null,"Assurances de prêt\nL'Assurance De Prêt groupe (Fédération Continentale) ne couvre que l'invalidité totale à 66%, ne propose pas de protection famille et ne fait pas de distinction fumeur/non fumeur.\nL'assuré ne bénéficie pas de l'exonération des cotisation lors des prises en charge par l'assureur."]
[null,"Tarification des services \nLe magazine Capital Octobre 2007 révèle que SG est une des banques à guichets les plus compétitives.",null,null,null,null,"Tarification des services \nLe magazine Capital Octobre 2007 révèle que le forfait de la SG contient trop de services inutiles comme par exemple 3 chèques de banque gratuits, elle facture également 5 euros par trimestre au moindre découvert."]
[null,"Divers\nAccords particuliers avec les mutuelles de la fonction publique pour les garanties de prêt\nBon service de banque à distance \nFixe à 30 ans disponible\nBanque très compétente sur les montages de prêt en paliers et/ou lissage afin de trouver la meilleure solution\nPrêts souples car possibilité de moduler ses échéances de 30%\nVEFA : Franchise partielle et totale possible sur les intérêts intercalaires\nL' Amortissement immédiat du capital est également possible",null,null,null,null,"Divers\nAssurance groupe \"Fédération continentale\": chère (0,40% quelque soit l'âge) et offrant des garanties limitées\nPas de produits mixtes\nTurn-over important (un directeur d'agence reste généralement 2 ans)\nBanque élitiste qui fera peu d'effort sur du client \"Tous publics\""]
[]
[]
[null,"*   Réservé à un usage strictement interne\n**  Informations données à titre indicatif, sans engagement contractuel et susceptibles de modifications\n***Toute information contraire doit immédiatement être communiqué au département Animation et Formation"]

{"sheet":"Crédit Foncier","index":23,"n_rows":25,"n_cols":7,"rows_kept":25,"cut":false,"hidden":true,"merged":[[24,1,25,10],[20,1,22,5],[19,6,19,10],[23,1,23,10],[19,1,19,5],[5,1,9,10],[10,1,12,10],[13,1,14,5],[13,6,14,10],[15,6,15,10],[16,1,17,5],[15,1,15,5],[20,6,22,10],[16,6,17,10],[18,1,18,5]]}
[]
[]
[]
[]
[]
[null,"Crédit Foncier"]
[]
[]
[]
[]
[null,"Filiale du groupe Caisse d’Épargne\nActeur de référence du crédit immobilier issu de la fusion entre Enténial et Crédit Foncier en juin 2005\nBanque spécialisée dans les prêts immobiliers\n200 agences en France, 4000 collaborateurs pour 1,2 M de clients\n1er émetteur après l’État et premier émetteur d’obligations foncières en France"]
[]
[]
[null,"POINTS FORTS",null,null,null,null,"POINTS FAIBLES"]
[]
[null,"Modularité des échéances\nModularité possible à partir de la 13ème échéance\nA la hausse: +30% maximum\nA la baisse:  -20% à la baisse",null,null,null,null,"Modularité des échéances\nModularité gratuite sur la 1ère échéance et ensuite 46€ par modulation \nModularité accessible une fois par an"]
[null,null,null,null,null,null,"Assurances de prêt\nL'Assurance De Prêt groupe ne propose qu'une prise en charge de l'invalidité totale à 66%, ne propose pas de protection famille et ne fait pas de distinction fumeur/non fumeur.\nElle n'intervient en remboursement des échéances que si et seulement si l'assuré subit une perte de revenu, elle n'exonère pas l'assuré du paiement des cotisations lors des prises en charge"]
[]
[null,"Transférabilité du prêt \nPossible au cas par cas"]
[null,"Pénalités en cas de remboursement anticipé\nIndemnité de Remboursement Anticipé au cas par cas"]
[null,"Divers \nPas de domiciliation des salaires.\nPrélèvements sur comptes externes pas d’ouverture de compte et pas de domiciliation des revenus\nSolutions d’épargne/placements, Retraite\nOffres complètes pour les investisseurs (Multi Risques Habitation, Garantie de loyers impayés, Garantie revente)\nProduits sur 40 ans\nProduit \"Tendance J3 et J5\" (fixe 3 ans et 5 ans)",null,null,null,null,"Divers\nSouplesse des offres crédit, très limitée et principalement du taux révisable."]
[]
[]
[null,"\n"]
[null,"*   Réservé à un usage strictement interne\n**  Informations données à titre indicatif, sans engagement contractuel et susceptibles de modifications\n***Toute information contraire doit immédiatement être communiqué au département Animation et Formation"]

{"sheet":"Limites de l'argument taux","index":24,"n_rows":0,"n_cols":0,"rows_kept":0,"cut":false,"hidden":true,"merged":[]}

{"sheet":"1 L'argument offre assurance","index":25,"n_rows":0,"n_cols":0,"rows_kept":0,"cut":false,"hidden":true,"merged":[[2,4,2,9]]}

{"sheet":"Argument modularité4","index":26,"n_rows":3,"n_cols":6,"rows_kept":3,"cut":false,"hidden":true,"merged":[]}
[]
[]
[null,null,null,null,null,"Argument Modularité"]

{"sheet":"2 L'argument crédit réactif","index":27,"n_rows":0,"n_cols":0,"rows_kept":0,"cut":false,"hidden":true,"merged":[[1,4,2,9]]}

{"sheet":"Exemple 1 Vente accord avec mod","index":28,"n_rows":0,"n_cols":0,"rows_kept":0,"cut":false,"hidden":true,"merged":[]}

{"sheet":"Argument modularité7","index":29,"n_rows":3,"n_cols":6,"rows_kept":3,"cut":false,"hidden":true,"merged":[]}
[]
[]
[null,null,null,null,null,"Argument Modularité"]

{"sheet":"Exemple 2 Vente accord avec mod","index":30,"n_rows":0,"n_cols":0,"rows_kept":0,"cut":false,"hidden":true,"merged":[]}

{"sheet":"Exemple Vente Transfert de prêt","index":31,"n_rows":0,"n_cols":0,"rows_kept":0,"cut":false,"hidden":true,"merged":[]}

{"sheet":"Argument PREMIUM","index":32,"n_rows":15,"n_cols":1,"rows_kept":15,"cut":false,"hidden":true,"merged":[]}
[]
[]
[]
[]
[]
[]
[]
[]
[]
[]
[]
[]
[]
[]
["Un exemple:"]

{"sheet":"Assurance individuelle3","index":33,"n_rows":3,"n_cols":6,"rows_kept":3,"cut":false,"hidden":true,"merged":[]}
[]
[]
[null,null,null,null,null,"Assurance individuelle"]

{"sheet":"Exemple 1 Avantages INV","index":34,"n_rows":0,"n_cols":0,"rows_kept":0,"cut":false,"hidden":true,"merged":[]}

{"sheet":"Exemple 2 Avantages Garantie","index":35,"n_rows":0,"n_cols":0,"rows_kept":0,"cut":false,"hidden":true,"merged":[]}

{"sheet":"Report d'échéances","index":36,"n_rows":0,"n_cols":0,"rows_kept":0,"cut":false,"hidden":true,"merged":[]}

{"sheet":"Seul, le taux ne suffit pas","index":37,"n_rows":0,"n_cols":0,"rows_kept":0,"cut":false,"hidden":true,"merged":[[2,5,2,7]]}

{"sheet":"Un gain sur ass de prêt","index":38,"n_rows":0,"n_cols":0,"rows_kept":0,"cut":false,"hidden":true,"merged":[[2,5,2,7]]}

{"sheet":"Exo IRA","index":39,"n_rows":0,"n_cols":0,"rows_kept":0,"cut":false,"hidden":true,"merged":[[3,5,3,7]]}

{"sheet":"Argument Exo IRA","index":40,"n_rows":0,"n_cols":0,"rows_kept":0,"cut":false,"hidden":true,"merged":[[2,5,2,7]]}

{"sheet":"Crédit du Nord Région Nord","index":41,"n_rows":25,"n_cols":7,"rows_kept":25,"cut":false,"hidden":true,"merged":[[5,1,9,10],[10,1,12,10],[13,1,14,5],[13,6,14,10],[23,1,23,10],[24,1,25,10],[15,1,15,5],[16,1,16,5],[20,1,20,5],[18,6,18,10],[16,6,16,10],[17,1,17,5],[22,6,22,10],[21,6,21,10],[20,6,20,10],[22,1,22,5],[15,6,15,10],[19,1,19,5],[21,1,21,5],[19,6,19,10]]}
[]
[]
[]
[]
[]
[null,"Crédit du Nord Région Nord"]
[]
[]
[]
[]
[null,"Le groupe Crédit du Nord est une filiale à 80% du groupe Société Générale, et à 20% du groupe Dexia. \nLe groupe Crédit du Nord est aujourd'hui une fédération de 7 banques régionales : le Crédit du Nord, la Banque Courtois dans le Sud Ouest, la banque Kolb dans l'Est, la banque Laydernier en Haute Savoie, Savoie, Ain et Isère, la banque Muger dans le Centre, la banque Rhône Alpes, la banque Tarneaud dans le Centre Ouest Atlantique. \n\nBanque jeune et dynamique qui cible une clientèle de jeunes cadres au profils évolutifs.\nBanque élitiste (3000€ pour un celibataire et 5000€ pour un couple) en contre partie les conseillers du CDN sont très compétents et disponibles pour répondre éfficacement au besoin de cette clientèle exigente.\nAssurance compétitive à environ 0,20% pour les jeunes.\nTarification assez performante si apport minimum 20%\nProduits phare comme : \"Crédit Global immobilier\" incluant le prêt relai et le prêt principal \"Libertimmo Cape -1\" qui ne peut que baisser dans la limite de -1%\nForte modularité des échéances et très rapide (dès 6 mois)\nAcceptation possible d'ADP externes.\n\nSolution Packagée :'' Convention Norplus Option Visa '' tarif 92 euros\nLe pack comprend :  Norplus Visa Comprend : une carte Visa à débit immédiat (ou différé) avec garantie achat, une assurance perte \net vol des moyens de paiement ainsi que les frais d'opposition et le renouvellement de la carte, une facilité de caisse avec 8 euros d'exonération \nd'agios, une carte de crédit revolving (avec ou sans package) et des chèques de banque gratuits.\nEn option, le titulaire accède à divers services avec 20% de remises : service Internet, assurances diverses, crédit, etc…). \n\nCoût de la carte Visa sans pack : 37 euros par an\n\nSolution Assurance habitation : Partenaire Eurofil"]
[]
[]
[null,"POINTS FORTS",null,null,null,null,"POINTS FAIBLES"]
[]
[null,"Modularité des échéances\nModularité très forte, la plus large du marché (doublement de l'échéance précédente)\nModularité possible dès le 6ème mois et gratuite\nNombre de modularités non limité pendant la vie du prêt",null,null,null,null,"Modularité des échéances\nDélai de 12 mois entre chaque modulation obligatoire"]
[null,"Report des échéances\nGratuit à partir de 6 mois à raison d'une échéance par an.",null,null,null,null,"Report des échéances\nSeulement une échéance par an avec intervalle de 12 mois minimum entre chaque report "]
[null,"Transférabilité du prêt \nPossible et gratuit même avec une garantie réelle"]
[null,null,null,null,null,null,"Pénalités en cas de remboursement anticipé\nExonération des Indemnités de Remboursement Anticipé difficile à négocier sur les produits à taux fixes"]
[]
[null,"Assurances de prêt\nDélégation d'assurance possible (Premium)",null,null,null,null,"Assurances de prêt\nContrat AON calculé sur le capital initial avec une couverture peu protectrice"]
[null,"Tarification des services\nTarification intéressante",null,null,null,null,"Tarification des services\nLe magazine Capital Octobre 2007 révèle que le forfait CDN est médiocre et contient des services superflus (assurance, coffre fort…) et ne propose pas un accès internet\n\nElle fait partie selon ce même magazine des banques les plus chères : carte bancaire onéreuse et frais élevés pour gérer ses comptes via internet."]
[null,"Divers\nVEFA : franchise totale sur les intérets intercalaires et amortissement immédiat du capital possibles.\nFinancements à 100% maxi (financement des frais de négociation)\nBanque dynamique pour les jeunes cadres évolutifs.\nBanque élitiste (+42 000 € par an pour un couple).\nService client haut niveau (portefeuilles clients moins large).\n20% de réduction sur certaines opérations si souscription du pack Norplus",null,null,null,null,"Divers \nTrop élitiste, pas de financement à 110% : obligation de disposer d'apports pour financer les frais de notaire et les frais de garantie.\nProximité des points de vente limitée par rapport à d'autres établissements.\nInternet non inclus dans le pack Norplus.\nPas de mixte et pas de 30 ans.\nBanque à exigence de critères de revenus.\nSi le couple a moins de 42 000€ annuels, il doit disposer de 20% minimum d'apport en plus des frais annexes (notaire et garantie)."]
[]
[null,"*   Réservé à un usage strictement interne\n**  Informations données à titre indicatif, sans engagement contractuel et susceptibles de modifications\n***Toute information contraire doit immédiatement être communiqué au département Animation et Formation"]

{"sheet":"Crédit Mutuel Nord Europe","index":42,"n_rows":36,"n_cols":7,"rows_kept":36,"cut":false,"hidden":true,"merged":[[35,1,36,10],[25,1,25,5],[25,6,25,10],[26,6,33,10],[34,1,34,10],[26,1,33,5],[5,1,9,10],[10,1,12,10],[13,1,14,5],[13,6,14,10],[20,6,20,10],[15,1,19,5],[15,6,19,10],[24,6,24,10],[20,1,20,5],[21,1,21,5],[22,1,22,5],[23,1,23,5],[21,6,21,10],[23,6,23,10],[24,1,24,5]]}
[]
[]
[]
[]
[]
[null,"Crédit Mutuel Nord Europe"]
[]
[]
[]
[]
[null,"Deuxième banque de détail en France, 1er bancassureur de France, 2ème banque dans le financement de l'habitat\nLe groupe Crédit Mutuel comprend le réseau du Crédit Mutuel et l’ensemble de ses filiales, dont le CIC\n\nTarification avantageuse pour les enseignants et professions médicales\nCaution CMH (une des moins chère du marché)\n\nSolution Packagée : '' Convention Eurocompte Confort '' tarif à partir de 78 euros\nLe pack comprend :  Carte Visa à débit immédiat avec garantie achat, assurance perte et vol des moyens de paiement, exonération des frais de tenue de compte et d'opposition (sur carte et chèques), facilité de caisse, services de banque à distance (service Internet, réduction sur le service d'alertes sur compte), franchise de 4 virements externes gratuits par mois via Internet, franchise de 6 retraits gratuits, assurance décès, service d'épargne automatique, prime d'épargne sur le livret Fidélité, 3 chèques de banque gratuits, envoi des chéquiers en pli simple, carte révolving et Payweb Card incluses.\nEn option : découvert Souplesse, réduction sur les frais de dossier des crédits auto ou consommation.\n\nCoût de la carte Visa ou MasterCard sans pack : 17,25 euros\n\nSolution Assurance Habitation : \"Assurance Habitation du Crédit Mutuel\"\nVous choisissez parmi quatre offres celle qui correspond le mieux à vos exigences pour couvrir votre domicile et vos biens.\nSelon les caractéristiques de votre habitation et de votre budget, vous fixez votre niveau de garantie et de franchise. \nVous disposez aussi d'un large choix d'options pour renforcer votre protection. \nEn plus, dès que vous avez accumulé 2 années d'assurance sans sinistre, \nvous bénéficiez d'un bonus de franchise. Il s'agit d'une prise en charge partielle de votre franchise. \nCe bonus augmente tous les ans et peut, à terme, couvrir intégralement votre franchise, vous garantissant ainsi une meilleure \nindemnisation en cas de sinistre."]
[]
[]
[null,"POINTS FORTS",null,null,null,null,"POINTS FAIBLES"]
[]
[null,"Modularité des échéances\nGratuite, à partir de la 13ème échéances\n\nA la hausse ou à la baisse, les limites sont de ne pas faire évoluer de plus ou moins de 5 ans sa durée de crédit initiale en modulant à la hausse ou à la baisse\n\nPossible pour les prêts à taux variables.\n",null,null,null,null,"Modularité des échéances        \nDelai de 12 mois entre 2 modularités.\n\nSur toute la durée du prêt, l'emprunteur ne peut pas gagner plus de 5 ans sur le remboursement de son crédit, modularité très limitée.\n"]
[]
[]
[]
[]
[null,"Report des échéances\nReport gratuit, de 3 à 24 mois en une ou plusieurs fois.\nPas de délai entre chaque report.",null,null,null,null,"Report des échéances\nPendant la période de report, l'emprunteur doit tout de même payer les intérêts de son prêt, le report porte uniquement sur le capital"]
[null,"Transférabilité du prêt \nA voir, mais non stipulé dans les Conditions Générales de Vente. ",null,null,null,null,"Transférabilité du prêt \nLa transférabilité n'est pas acquise dès le départ et doit être un élément de négociation"]
[null,"Pénalités de Remboursement Anticipé\nExonération d'Indemnité de Remboursement Anticipé négociable"]
[null,"Garantie de prêt\nCrédit Logement et mutuelles professionnelles",null,null,null,null,"Garantie de prêt \nNe travaille pas avec CMH et MGEN"]
[null,"Assurances de Prêt\nPlusieurs tarifications possibles en fonction de l'âge, sur le capital emprunté ou sur le Capital Restant Du.\n\nACE (Tarification agressive pour les jeunes) permet la distinction fumeur/non fumeur et offre les mêmes garanties que le contrat groupe ACM.",null,null,null,null,"Assurances de prêt\nPas de liberté donnée au client pour choisir son Assurance De Prêt.\nL'ADP groupe (ACM) ne propose pas de protection famille, ne fait pas de distinction fumeur/non fumeur, n' a pour base de remboursement que la seule perte de revenu de l'assuré.\n\nElle n'exonère pas l'assuré du paiement des cotisations lors des prises en charge\n\nLe contrat ACM et ACE (jeunes) ne prennent en compte qu'une invalidité totale (66% minimum), la perte de salaire est prise en charge\n\nFrais de délégation de 105,5€"]
[null,null,null,null,null,null,"Tarification des services \nLe magazine Capital Octobre 2007 révèle que le forfait du Crédit Mutuel Nord Europe est cher, tout est facturé : la tenue de compte (30 euros), l'accès à internet (36 euros),,,"]
[null,"Divers\nLe Crédit Mutuel est largement implanté sur le territoire français.\n\nOffre crédit large avec possibilité de financement jusqu'à 30 ans avec une offre à taux mixte (taux fixe 10 ans et variable)\n\nFinancements à 110% possibles.\n\nAssurance Multi Risques Habitation compétitive avec Assurance Crédit Mutuel (protection vol avec système d'alarme garanti 4ans, à prix réduit)\n\nVEFA : franchise partielle uniquement sur les intérets intercalaires. Pas d'amortissement immédiat du capital.",null,null,null,null,"Divers\n\nRigidité dans la gestion des comptes courants\n\nVEFA : il n'est pas possible de différer les intérêts intercalaires (franchise totale), impossibilité d'amortissement immédiat du capital"]
[]
[]
[]
[]
[]
[]
[]
[]
[null,"*   Réservé à un usage strictement interne\n**  Informations données à titre indicatif, sans engagement contractuel et susceptibles de modifications\n***Toute information contraire doit immédiatement être communiqué au département Animation et Formation"]

{"sheet":"La Banque Postale","index":43,"n_rows":28,"n_cols":2,"rows_kept":28,"cut":false,"hidden":true,"merged":[[25,1,25,10],[26,1,26,10],[27,1,28,10],[21,1,21,10],[24,1,24,10],[22,1,22,10],[23,1,23,10],[5,1,9,10],[10,1,12,10],[13,1,14,10],[15,1,18,10],[19,1,20,10]]}
[]
[]
[]
[]
[]
[null,"La Banque Postale"]
[]
[]
[]
[]
[null,"Coût de la carte Eurocard Mastercard ou Visa sans pack : 34 euros par an\n\n"]
[]
[]
[null,"POINTS FAIBLES"]
[]
[null,"Modularité des échéances\nLes prêts lissés ne sont pas modulables (modulables uniquement sur le dernier palier)\nModularité limitée : \n>> +30% maximum de l'échéance initiale à la hausse\n>> -10% maximum de l'échéance initiale à la baisse\n>> 12 mois minimum entre chaque modulation"]
[]
[]
[]
[null,"Solution Assurance de prêt\nAssurances de prêt CNP très chère\nIndémnisation sur la seule Perte de Revenus (et non remboursement de la mensualité)\nTarification sur le capital initial, donc moins interessante notamment en cas de modulation\nAbsence d'exonération du paiement des cotisations pendant la prise en charge par l'assureur\nPrise en charge à partir de 66% d'invalidité (et non 33% comme sur PREMIUM)\nExclusion des maladies psychologiques et psychiatriques ainsi que des maladies dorsales"]
[]
[null,"Pénalités de Remboursement Anticipé\nDifficile à négocier et généralement n'est acceptée que passé le délai de 7 ans"]
[null,"Report d'échéance\n"]
[null,"Transfert de prêt"]
[null,"Garantie\nGarantie impossible par les mutuelles professionnelles pour le PTZ"]
[null,"Prêt Relais\nFrais de dossier de 0,5% du capital emprunté (mini 100€ et maxi 1000€)\nLa Banque Postale ne propose pas la possibilité d'une franchise totale, \nl'emprunteur doit rembourser les intérêts intercalaires durant les différents déblocages de fonds"]
[]
[null,"*   Réservé à un usage strictement interne\n**  Informations données à titre indicatif, sans engagement contractuel et susceptibles de modifications\n***Toute information contraire doit immédiatement être communiqué au département Animation et Formation"]

{"sheet":"Arguments transfert de prêt","index":44,"n_rows":0,"n_cols":0,"rows_kept":0,"cut":false,"hidden":true,"merged":[[1,4,2,9]]}

{"sheet":"Le marché de la modularité","index":45,"n_rows":0,"n_cols":0,"rows_kept":0,"cut":false,"hidden":true,"merged":[]}

{"sheet":"Exemple 3 Vente PREMIUM","index":46,"n_rows":0,"n_cols":0,"rows_kept":0,"cut":false,"hidden":true,"merged":[]}

{"sheet":"Exemple Report d'échéances","index":47,"n_rows":0,"n_cols":0,"rows_kept":0,"cut":false,"hidden":true,"merged":[]}

{"sheet":"Avantages Garantie forfaitaire","index":48,"n_rows":0,"n_cols":0,"rows_kept":0,"cut":false,"hidden":true,"merged":[]}

{"sheet":"Crédit Immobilier de France IDF","index":49,"n_rows":28,"n_cols":7,"rows_kept":28,"cut":false,"hidden":true,"merged":[[17,1,17,5],[15,1,15,5],[27,1,28,10],[18,1,18,5],[18,6,18,10],[22,1,25,5],[22,6,25,10],[20,6,20,10],[26,1,26,10],[16,6,16,10],[16,1,16,5],[5,1,9,10],[10,1,12,10],[13,1,14,5],[13,6,14,10],[15,6,15,10]]}
[]
[]
[]
[]
[]
[null,"Crédit Immobilier de France\nIle de France"]
[]
[]
[]
[]
[null,"Issu historiquement du mouvement HLM, le Crédit Immobilier de France possède une très forte expertise reconnue permettant aux ménages à revenus modestes d’accéder à la propriété.\nL’activité de crédit immobilier est désormais exercée uniquement par les 17 filiales, établissements de crédit. \n300 points de vente et un très important tissu de prescripteurs.\nLe Groupe Crédit Immobilier de France est le seul acteur spécialisé non lié à un groupe bancaire et se consacre exclusivement au prêt immobilier résidentiel aux particuliers. \nIl est ainsi devenu le premier producteur spécialisé de prêts résidentiels en France."]
[]
[]
[null,"POINTS FORTS",null,null,null,null,"POINTS FAIBLES"]
[]
[null,"Modularité des échéances\n1ère modularité gratuite \nPossible à n'importe quel moment à partir de la 13ème échéance \nA la hausse +20% maxi \nà la baisse -20% \nRallongement possible de la durée sur 5 ans maximum",null,null,null,null,"Modularité des échéances\n30€ par modulation après la première variation"]
[null,"Report d'échéances\nSans frais à partir de la 13ème échéance",null,null,null,null,"Report d'échéance\nSeulement 3 échéances sur toute la durée du prêt en une ou plusieurs fois."]
[null,"Transférabilité du prêt \nPossible et peut être facturé par l'établissement"]
[null,"Pénalités en cas de remboursement anticipé\nExonération d'Indemnité de Remboursement Anticipé après 9 ans\n",null,null,null,null,"Pénalités en cas de remboursement anticipé\n3% maxi pendant les 9 premières années.\nMinimum de 10% du capital emprunté pour un remboursement anticipé partiel."]
[]
[null,null,null,null,null,null,"Assurances de prêt\nL'ADP groupe ne propose qu'une prise en charge de l'invalidité totale à 66%, ne propose pas de protection famille et ne fait pas de distinction fumeur/non fumeur.\nElle n'intervient en remboursement des échéances que si et seulement si l'assuré subit une perte de revenu, elle n'exonère pas l'assuré du paiement des cotisation lors des prises en charge"]
[]
[null,"Divers \nPas de domiciliation des salaires\nLe CIF peut financer des projets comportant des risques plus élevés que des banques classiques refuseraient.\nPrélèvements sur comptes externes, pas d’ouverture de compte et pas de domiciliation des revenus\nSolutions d’épargne/placements, Retraite.\nOffres complètes pour les investisseurs (Multi Risques Habitation, Garantie de loyers impayés, Garantie revente)\nOffre spéciale pour les intérimaires justifiant 600H d'activité sur les 12 derniers mois (environ 5 mois sur l'année)\nPrêt jusqu'à 40 ans mixtes fixe 3, 5, 7, 10\nVEFA : Franchise partielle et totale (36 mois maxi) sur les intérets intercalaires.",null,null,null,null,"Divers\nSouplesse des offres crédit très limitée et principalement des solutions en taux révisables.\nPas d'amortissement immédiat du capital."]
[]
[]
[]
[null,"\n"]
[null,"*   Réservé à un usage strictement interne\n**  Informations données à titre indicatif, sans engagement contractuel et susceptibles de modifications\n***Toute information contraire doit immédiatement être communiqué au département Animation et Formation"]

{"sheet":"Crédit Agricole PACA","index":50,"n_rows":34,"n_cols":7,"rows_kept":34,"cut":false,"hidden":true,"merged":[[32,1,32,10],[19,1,22,5],[19,6,22,10],[33,1,34,10],[23,1,24,5],[23,6,24,10],[25,6,25,10],[29,6,31,10],[29,1,31,5],[27,6,27,10],[25,1,25,5],[5,1,9,10],[10,1,12,10],[13,1,14,5],[13,6,14,10],[15,1,18,5],[15,6,18,10]]}
[]
[]
[]
[]
[]
[null,"Crédit Agricole\nProvence Côte d'Azur"]
[]
[]
[]
[]
[null,"\"Une relation durable, ça change la vie\"\n1er Groupe Bancaire Français, 1ère banque europénne, 5ème banque mondiale.\nLe Crédit Agricole rajeunit et dynamise son image grâce à sa communication. \n1er réseau de proximité bancaire de France\n\nSolution Packagée : '' Compte Service Equilibre '' tarif 40,32 euros\nLe pack comprend :  une assurance des moyens de paiement, les frais d'opposition, la mise en place de virements permanents. Pour les imprévus, une facilité de caisse assortie d'une assurance décès invalidité et une exonération d'agios sontintégrées. Le service de banque à distance permet de gérer ses comptes courants et comptes titres via Internet.(attention le forfait ne contient pas la carte bancaire)\n\nCoût de la carte MasterCard sans pack : 33,60 euros par an\n\nSolution Assurance habitation : \"Assurance Multirisques Habitation PACIFICA\"\nFormule Eco : 1 à 4 pièces\nFormule Equilibre : 1 à 10 pièces\nFormule Rééquipement à Neuf : 1 à 20 pièces"]
[]
[]
[null,"POINTS FORTS",null,null,null,null,"POINTS FAIBLES"]
[]
[null,"Modularité des échéances\nModularité possible et gratuite. \nA la hausse: jusqu'à 30% de l'échéance précédente. \nA la baisse: il ne faut pas que la durée du prêt se rallonge de plus de 3 ans pour un taux fixe.",null,null,null,null,"Modularité des échéances\nPossible uniquement à partir de la 13ème échéance et limitée à 30%.\nModularité possible uniquement à chaque date anniversaire du prêt\nLe client garde sa mensualité modulée sur 12 mois minimum."]
[]
[]
[]
[null,"Report des échéances \nReport possible et gratuit.\nLe client a le choix d'impacter son report sur la mensualité ou sur la durée de son prêt.\nPossibilité de geler 6 mois d'échéances consécutives.\nNombre d'échéances non limité sous réserve d'un rallongement de durée inférieur à 3 ans.",null,null,null,null,"Report des échéances\nPossible uniquement à partir de la 13ème échéance. \nLimité à 1 échéance à la fois, le client ne peut suspendre 2 échéances consécutives."]
[]
[]
[]
[null,"Transférabilité du prêt \nTransfert de prêt possible au cas par cas.\nTransfert gratuit.\nConditions si caution CAMCA ou Crédit Logement sur le prêt et emprunt au CA sur nouvelle acquisition."]
[]
[null,"Pénalités de remboursement anticipé\nExonération si souscription de l'assurance Multi Risques Habitation.",null,null,null,null,"Pénalités en cas de remboursement anticipé\nSoumise à la vente de la Multi Risques Habitation du Crédit Agricole."]
[]
[null,null,null,null,null,null,"Assurances de prêt \nDélégations très peu négociables. \nAssurance Groupe CNP chère et garantie limitée (180j de carence en ITT)\nPeu de liberté de choix d'Assurance De Prêt  pour le client."]
[]
[null,"Divers\nBanque de proximité, généraliste, \"Tous publics\"\nInvestissement locatif, non domiciliation des revenus négociable.\nFixe jusqu'à 30 ans\n\nVEFA : Franchise partielle et totale sur les intérets intercalaires.\nAmortissement immédiat possible.",null,null,null,null,"Divers\nPas de crédit mixte."]
[]
[]
[]
[null,"*   Réservé à un usage strictement interne\n**  Informations données à titre indicatif, sans engagement contractuel et susceptibles de modifications\n***Toute information contraire doit immédiatement être communiqué au département Animation et Formation"]

{"sheet":"Synthèse","index":51,"n_rows":19,"n_cols":9,"rows_kept":19,"cut":false,"hidden":true,"merged":[[0,3,3,7],[18,2,19,11]]}
[null,null,null,"Synthèse sur les banques"]
[]
[]
[]
[]
[]
[null,"Banque","Offre de services","Modularité","Report","Transfert de prêt","IRA / ADP","Divers +","Divers - "]
[null,null,"Offre diversifiée et complète. Tarification très bien positionnée (5ème / 140 d'après l'observatoire de la concurrence). Internet Gratuit","Possible dès la 24ème mens. De 2 à 10% de la dernière éch. à la hausse sans études, au-delà étude du dossier. 2% de la dernière éch. à la baisse, sans dépasser un allongement de 2 ans du prêt","Possible de 3 à 12 mois en 1 ou plusieurs fois. Maximum 12 mois de report sur toute la durée du prêt.","Transfert possible sous conditions : ne pas avoir modulé ou reporté le prêt, ni aucun remboursement anticipé. Coût: 2% du CRD (mini 600€, maxi 2000€)","Suppression des IRA possible. Délégation Cardif / Meilleurtaux Emprunteur possible. Contrat ADP Groupe très cher (0,41 à 0,60%)","Financement 110% ; pas de frais de dossier ; fixe sur 30 ans ","Pack Esprit Libre Reference onéreux."]
[null,null,"Groupe BNP Paribas \nPas de solution Assurance habitation.\n","Modularité à partir du 24 ème mois et 1 fois par an.","IMPOSSIBLE","IMPOSSIBLE","Exonération d'Indemnité de Remboursement Anticipé négociable.","VEFA : Franchise partielle et totale possible sur les intérêts intercalaires.","Pas de prêt sur 30 ans et faible réseau d'agences."]
[null,null,"Offre haut de gamme du groupe Crédit Mutuel.","Modularité dès la 2ème année, ","12 échéances (suspension des échéances pendant 3 mois et ce 4 fois durant la vie du prêt)","Possible, avec frais.","Délégation ADP Télévie/Premium;\nADP compétitive avec Ass Crédit Mutuel","Prêt jusqu'à 30 ans à taux mixte\nVEFA : Amortissement immédiat\nOffre avantageuse pour les jeunes et les primo accédants\n","Frais de dossier 200 Euro\nFranchise partielle seult en VEFA\nFranchise totale seult sur prêt relais\n"]
[null,null,"Tarification assez performante","Possible dès la 24ème mens. \n+ / - 10%","Jusqu'à 10 000 euros.","IMPOSSIBLE","Suppression des IRA possible. Délégation possible. ","Sans frais de dossier prêt immo;\n jusqu'à 30 ans / fixe 5 ans ; \nVEFA franchise totale admise.","Image de marque écornée. Frais de dossier très cher (500€ en moy). Commission d'engagement sur VEFA (1,25%)"]
[null,null,"Un des services bancaires sur Internet les plus complets et gratuit","Possible dès la 2ème année. + / - 30%, avec un coût pour la mise en place : 0,50% du prêt initial (mini : 300€, maxi 900€).","Possible ","Transfert possible si pas d'incidents sur le prêt principal","Suppression des IRA et acceptation délégation ADP au cas par cas. Assurance Groupe chère","Très souple sur le lissage et les palier pour proposer des taux bas. Accords spécifiques Mutuelles fonctionnaires (BFM)","Assurance groupe \"Fédération continental\" onéreuse ; pas de produits mixtes."]
[null,"IDF Paris","Offre diversifiée tout plublic. Politique tarifaire élevée","Modularité dès la 13ème échéance, gratuite, jusqu'à 30% à la hausse et à la baisse limitée à 3 ans d'allongement de la durée initiale.","Possible à partir de la 13ème éch. 1 éch. par an","Transfert possible si pas d'incidents sur le prêt principal","Suppression IRA impossible. Acceptation délégation ADP exceptionnelle si justifiée.","N'exige pas la domiciliation des revenus locatifs","Grosses lourdeurs administratives"]
[null,null,"Tarification performante, offre de service haut de gamme","Possible dès la 6ème éch. jusqu'à 100% de l'éch. Initiale.","Gratuit à partir de 6 mois à raison d'une mensualité par an.","Possible sans frais si pas d'incidents.","Délégation ADP possible. Assurance groupe bon marché (0,20%)","Conseillers compétents et efficaces, banque jeune et dynamique ciblant les jeunes cadres dynamiques","Banque élitiste (3000€ de rev./mois). Pas de 110%, pas de marge de négociation."]
[null,"IDF Paris","Souplesse de son offre. \nOffre adaptée aux enseignants. ","Modularité gratuite négociable.\nA la hausse de 5% de l'échéance précédente sans maxi et à la baisse limité à 3 ans de + que la durée initiale.","IMPOSSIBLE","Transfert possible. Soumis à accord du comité de direction et de la garantie si CMH. Si autre garantie, transfert impossible. Frais de dossiers à prévoir (pas plus de précision à ce sujet)","Suppression IRA possible. Délégation Télévie acceptée. Pour autre délégation ADP au cas par cas. Assurance groupe ACM (chère) et ACE (tarif allégé)","1er bancassureur et 2ème dans le financement immo. Assurance MRH complète et performante. Réseau étendu et de proximité.","Rigidité sur la gestion des comptes courants, pas de remboursement pour la caution CMH"]
[null,"\n\nIDF Paris","Offre diversifiée tout plublic. \nPolitique tarifaire basse.","Possible dès la 13ème échéance. \nModularité pro-active (courrier d'information) jusqu'à 10% de l'échéance initiale sans réétude du dossier. Au-delà des 10%, étude du dossier. ","Possible dès la 18ème éch. 1 fois par an. Report de 1 à 12 éch en 1 ou plusieurs fois.","Transfert possible. Soumis à accord de l'agence CE gérant la relation et de l'accord de la SACCEF. Délai de réalisation de la nouvelle opération obligatoirement de moins de 2 mois. Frais de dossiers à la discrétion de l'agence CE.","Suppression possible si prévente de l'assurance Multi Risques Habitation.","Avantage pour les primo accédants taux fixe sur 30 ans et produit mixte ; compte chèque rémunéré.","Barème non dérogeable, impossible de décôte par / à la grille CEIDF\nPas de décôte sur profil haut de gamme."]
[null,null,"Banque spécialisée prêt immo.\n1er émetteur après l’État et premier émetteur d’obligations foncières en France.\n\n","1ère modularité gratuite puis 46 E\nDès  13ème échéance.\n+30% max\n-20% max","IMPOSSIBLE","Tranférabilité possible au cas par cas","Suppression possible au cas par cas","Produits sur 40 ans ; \nOffre complète pour les investisseurs ;\nPas de domiciliation des revenus.","Souplesse des offres crédit très limitée et principalement du taux révisable."]
[null,null,"Haut de gamme, \nA l'international\nTrès bon service client.","Modularité gratuite .\nA la hausse, doublement de la mensualité initiale.\nA la baisse, rallongement 2 ans max.\n5 modularités maxi.","IMPOSSIBLE","IMPOSSIBLE","Exonération au cas par cas","VEFA : franchise totale des intérets inetrcalaires possible","Tarification élevée des services."]
[null,null,"*   Réservé à un usage strictement interne\n**  Informations données à titre indicatif, sans engagement contractuel et susceptibles de modifications\n***Toute information contraire doit immédiatement être communiqué au département Animation et Formation"]

{"sheet":"calculs","index":52,"n_rows":607,"n_cols":33,"rows_kept":607,"cut":false,"hidden":true,"merged":[[5,11,5,12],[5,19,5,20]]}
[]
[]
[]
[]
[]
[null,null,{"$f":"IRR(B7:B607,0.1%)*12","v":{"$error":"#VALUE!"}},{"$f":"IRR(D7:D607,0.1%)*12","v":{"$error":"#VALUE!"}},null,null,null,{"$f":"IRR(G7:G607,0.1%)*12","v":{"$error":"#VALUE!"}},{"$f":"IRR(I7:I607,0.1%)*12","v":{"$error":"#VALUE!"}},null,null,"Mensualité moyenne 1",null,null,null,{"$f":"IRR(O7:O607,0.1%)*12","v":{"$error":"#VALUE!"}},{"$f":"IRR(Q7:Q607,0.1%)*12","v":{"$error":"#VALUE!"}},null,null,"Mensualité moyenne 2",null,null,null,{"$f":"IRR(W7:W607,0.1%)*12","v":{"$error":"#VALUE!"}},{"$f":"IRR(Y7:Y607,0.1%)*12","v":{"$error":"#VALUE!"}}]
[null,{"$f":"#REF!*-1","v":{"$error":"#REF!"}},null,{"$f":"B7","v":{"$error":"#REF!"}},null,null,{"$f":"-#REF!","v":{"$error":"#REF!"}},null,{"$f":"G7","v":{"$error":"#REF!"}},null,null,{"$f":"(#REF!+#REF!)/#REF!","v":{"$error":"#REF!"}},null,null,{"$f":"#REF!*-1","v":{"$error":"#REF!"}},null,{"$f":"O7","v":{"$error":"#REF!"}},null,null,{"$f":"(#REF!+#REF!)/#REF!","v":{"$error":"#REF!"}},null,null,{"$f":"#REF!*-1","v":{"$error":"#REF!"}},null,{"$f":"W7","v":{"$error":"#REF!"}}]
[1,{"$f":"IF(A8>=#REF!,\"\",IF(A8<=#REF!,#REF!,#REF!))","v":{"$error":"#REF!"}},{"$f":"IF(A8>=#REF!,\"\",IF(A8<=#REF!,#REF!,#REF!))","v":{"$error":"#REF!"}},{"$f":"IF(A8>#REF!,\"\",#REF!)","v":{"$error":"#REF!"}},null,1,{"$f":"IF(F8>=#REF!,\"\",IF(F8<=#REF!,#REF!,#REF!))","v":{"$error":"#REF!"}},{"$f":"IF(F8>=#REF!,\"\",IF(F8<=#REF!,#REF!,#REF!))","v":{"$error":"#REF!"}},{"$f":"IF(F8>#REF!,\"\",PMT(#REF!/12,#REF!,-#REF!))","v":{"$error":"#REF!"}},null,null,null,null,1,{"$f":"IF(N8>#REF!,\"\",$L$7)","v":{"$error":"#REF!"}},{"$f":"IF(N8>=#REF!,\"\",IF(N8<=#REF!,#REF!,#REF!))","v":{"$error":"#REF!"}},{"$f":"IF(N8>#REF!,\"\",#REF!)","v":{"$error":"#REF!"}},null,null,null,null,1,{"$f":"IF(V8>#REF!,\"\",$T$7)","v":{"$error":"#REF!"}},{"$f":"IF(V8>=#REF!,\"\",IF(V8<=#REF!,#REF!,#REF!))","v":{"$error":"#REF!"}},{"$f":"IF(V8>#REF!,\"\",#REF!)","v":{"$error":"#REF!"}},null,null,null,null,null,null,null,1]
[2,{"$f":"IF(A9>=#REF!,\"\",IF(A9<=#REF!,#REF!,#REF!))","v":{"$error":"#REF!"}},{"$f":"IF(A9>=#REF!,\"\",IF(A9<=#REF!,#REF!,#REF!))","v":{"$error":"#REF!"}},{"$f":"IF(A9>#REF!,\"\",#REF!)","v":{"$error":"#REF!"}},null,2,{"$f":"IF(F9>=#REF!,\"\",IF(F9<=#REF!,#REF!,#REF!))","v":{"$error":"#REF!"}},{"$f":"IF(F9>=#REF!,\"\",IF(F9<=#REF!,#REF!,#REF!))","v":{"$error":"#REF!"}},{"$f":"IF(F9>#REF!,\"\",PMT(#REF!/12,#REF!,-#REF!))","v":{"$error":"#REF!"}},null,null,null,null,2,{"$f":"IF(N9>#REF!,\"\",$L$7)","v":{"$error":"#REF!"}},{"$f":"IF(N9>=#REF!,\"\",IF(N9<=#REF!,#REF!,#REF!))","v":{"$error":"#REF!"}},{"$f":"IF(N9>#REF!,\"\",#REF!)","v":{"$error":"#REF!"}},null,null,null,null,2,{"$f":"IF(V9>#REF!,\"\",$T$7)","v":{"$error":"#REF!"}},{"$f":"IF(V9>=#REF!,\"\",IF(V9<=#REF!,#REF!,#REF!))","v":{"$error":"#REF!"}},{"$f":"IF(V9>#REF!,\"\",#REF!)","v":{"$error":"#REF!"}},null,null,null,null,null,null,null,2]
[3,{"$f":"IF(A10>=#REF!,\"\",IF(A10<=#REF!,#REF!,#REF!))","v":{"$error":"#REF!"}},{"$f":"IF(A10>=#REF!,\"\",IF(A10<=#REF!,#REF!,#REF!))","v":{"$error":"#REF!"}},{"$f":"IF(A10>#REF!,\"\",#REF!)","v":{"$error":"#REF!"}},null,3,{"$f":"IF(F10>=#REF!,\"\",IF(F10<=#REF!,#REF!,#REF!))","v":{"$error":"#REF!"}},{"$f":"IF(F10>=#REF!,\"\",IF(F10<=#REF!,#REF!,#REF!))","v":{"$error":"#REF!"}},{"$f":"IF(F10>#REF!,\"\",PMT(#REF!/12,#REF!,-#REF!))","v":{"$error":"#REF!"}},null,null,null,null,3,{"$f":"IF(N10>#REF!,\"\",$L$7)","v":{"$error":"#REF!"}},{"$f":"IF(N10>=#REF!,\"\",IF(N10<=#REF!,#REF!,#REF!))","v":{"$error":"#REF!"}},{"$f":"IF(N10>#REF!,\"\",#REF!)","v":{"$error":"#REF!"}},null,null,null,null,3,{"$f":"IF(V10>#REF!,\"\",$T$7)","v":{"$error":"#REF!"}},{"$f":"IF(V10>=#REF!,\"\",IF(V10<=#REF!,#REF!,#REF!))","v":{"$error":"#REF!"}},{"$f":"IF(V10>#REF!,\"\",#REF!)","v":{"$error":"#REF!"}},null,null,null,null,null,null,null,3]
[4,{"$f":"IF(A11>=#REF!,\"\",IF(A11<=#REF!,#REF!,#REF!))","v":{"$error":"#REF!"}},{"$f":"IF(A11>=#REF!,\"\",IF(A11<=#REF!,#REF!,#REF!))","v":{"$error":"#REF!"}},{"$f":"IF(A11>#REF!,\"\",#REF!)","v":{"$error":"#REF!"}},null,4,{"$f":"IF(F11>=#REF!,\"\",IF(F11<=#REF!,#REF!,#REF!))","v":{"$error":"#REF!"}},{"$f":"IF(F11>=#REF!,\"\",IF(F11<=#REF!,#REF!,#REF!))","v":{"$error":"#REF!"}},{"$f":"IF(F11>#REF!,\"\",PMT(#REF!/12,#REF!,-#REF!))","v":{"$error":"#REF!"}},null,null,null,null,4,{"$f":"IF(N11>#REF!,\"\",$L$7)","v":{"$error":"#REF!"}},{"$f":"IF(N11>=#REF!,\"\",IF(N11<=#REF!,#REF!,#REF!))","v":{"$error":"#REF!"}},{"$f":"IF(N11>#REF!,\"\",#REF!)","v":{"$error":"#REF!"}},null,null,null,null,4,{"$f":"IF(V11>#REF!,\"\",$T$7)","v":{"$error":"#REF!"}},{"$f":"IF(V11>=#REF!,\"\",IF(V11<=#REF!,#REF!,#REF!))","v":{"$error":"#REF!"}},{"$f":"IF(V11>#REF!,\"\",#REF!)","v":{"$error":"#REF!"}},null,null,null,null,null,null,null,4]
[5,{"$f":"IF(A12>=#REF!,\"\",IF(A12<=#REF!,#REF!,#REF!))","v":{"$error":"#REF!"}},{"$f":"IF(A12>=#REF!,\"\",IF(A12<=#REF!,#REF!,#REF!))","v":{"$error":"#REF!"}},{"$f":"IF(A12>#REF!,\"\",#REF!)","v":{"$error":"#REF!"}},null,5,{"$f":"IF(F12>=#REF!,\"\",IF(F12<=#REF!,#REF!,#REF!))","v":{"$error":"#REF!"}},{"$f":"IF(F12>=#REF!,\"\",IF(F12<=#REF!,#REF!,#REF!))","v":{"$error":"#REF!"}},{"$f":"IF(F12>#REF!,\"\",PMT(#REF!/12,#REF!,-#REF!))","v":{"$error":"#REF!"}},null,null,null,null,5,{"$f":"IF(N12>#REF!,\"\",$L$7)","v":{"$error":"#REF!"}},{"$f":"IF(N12>=#REF!,\"\",IF(N12<=#REF!,#REF!,#REF!))","v":{"$error":"#REF!"}},{"$f":"IF(N12>#REF!,\"\",#REF!)","v":{"$error":"#REF!"}},null,null,null,null,5,{"$f":"IF(V12>#REF!,\"\",$T$7)","v":{"$error":"#REF!"}},{"$f":"IF(V12>=#REF!,\"\",IF(V12<=#REF!,#REF!,#REF!))","v":{"$error":"#REF!"}},{"$f":"IF(V12>#REF!,\"\",#REF!)","v":{"$error":"#REF!"}},null,null,null,null,null,null,null,5]
[6,{"$f":"IF(A13>=#REF!,\"\",IF(A13<=#REF!,#REF!,#REF!))","v":{"$error":"#REF!"}},{"$f":"IF(A13>=#REF!,\"\",IF(A13<=#REF!,#REF!,#REF!))","v":{"$error":"#REF!"}},{"$f":"IF(A13>#REF!,\"\",#REF!)","v":{"$error":"#REF!"}},null,6,{"$f":"IF(F13>=#REF!,\"\",IF(F13<=#REF!,#REF!,#REF!))","v":{"$error":"#REF!"}},{"$f":"IF(F13>=#REF!,\"\",IF(F13<=#REF!,#REF!,#REF!))","v":{"$error":"#REF!"}},{"$f":"IF(F13>#REF!,\"\",PMT(#REF!/12,#REF!,-#REF!))","v":{"$error":"#REF!"}},null,null,null,null,6,{"$f":"IF(N13>#REF!,\"\",$L$7)","v":{"$error":"#REF!"}},{"$f":"IF(N13>=#REF!,\"\",IF(N13<=#REF!,#REF!,#REF!))","v":{"$error":"#REF!"}},{"$f":"IF(N13>#REF!,\"\",#REF!)","v":{"$error":"#REF!"}},null,null,null,null,6,{"$f":"IF(V13>#REF!,\"\",$T$7)","v":{"$error":"#REF!"}},{"$f":"IF(V13>=#REF!,\"\",IF(V13<=#REF!,#REF!,#REF!))","v":{"$error":"#REF!"}},{"$f":"IF(V13>#REF!,\"\",#REF!)","v":{"$error":"#REF!"}},null,null,null,null,null,null,null,6]
[7,{"$f":"IF(A14>=#REF!,\"\",IF(A14<=#REF!,#REF!,#REF!))","v":{"$error":"#REF!"}},{"$f":"IF(A14>=#REF!,\"\",IF(A14<=#REF!,#REF!,#REF!))","v":{"$error":"#REF!"}},{"$f":"IF(A14>#REF!,\"\",#REF!)","v":{"$error":"#REF!"}},null,7,{"$f":"IF(F14>=#REF!,\"\",IF(F14<=#REF!,#REF!,#REF!))","v":{"$error":"#REF!"}},{"$f":"IF(F14>=#REF!,\"\",IF(F14<=#REF!,#REF!,#REF!))","v":{"$error":"#REF!"}},{"$f":"IF(F14>#REF!,\"\",PMT(#REF!/12,#REF!,-#REF!))","v":{"$error":"#REF!"}},null,null,null,null,7,{"$f":"IF(N14>#REF!,\"\",$L$7)","v":{"$error":"#REF!"}},{"$f":"IF(N14>=#REF!,\"\",IF(N14<=#REF!,#REF!,#REF!))","v":{"$error":"#REF!"}},{"$f":"IF(N14>#REF!,\"\",#REF!)","v":{"$error":"#REF!"}},null,null,null,null,7,{"$f":"IF(V14>#REF!,\"\",$T$7)","v":{"$error":"#REF!"}},{"$f":"IF(V14>=#REF!,\"\",IF(V14<=#REF!,#REF!,#REF!))","v":{"$error":"#REF!"}},{"$f":"IF(V14>#REF!,\"\",#REF!)","v":{"$error":"#REF!"}},null,null,null,null,null,null,null,7]
[8,{"$f":"IF(A15>=#REF!,\"\",IF(A15<=#REF!,#REF!,#REF!))","v":{"$error":"#REF!"}},{"$f":"IF(A15>=#REF!,\"\",IF(A15<=#REF!,#REF!,#REF!))","v":{"$error":"#REF!"}},{"$f":"IF(A15>#REF!,\"\",#REF!)","v":{"$error":"#REF!"}},null,8,{"$f":"IF(F15>=#REF!,\"\",IF(F15<=#REF!,#REF!,#REF!))","v":{"$error":"#REF!"}},{"$f":"IF(F15>=#REF!,\"\",IF(F15<=#REF!,#REF!,#REF!))","v":{"$error":"#REF!"}},{"$f":"IF(F15>#REF!,\"\",PMT(#REF!/12,#REF!,-#REF!))","v":{"$error":"#REF!"}},null,null,null,null,8,{"$f":"IF(N15>#REF!,\"\",$L$7)","v":{"$error":"#REF!"}},{"$f":"IF(N15>=#REF!,\"\",IF(N15<=#REF!,#REF!,#REF!))","v":{"$error":"#REF!"}},{"$f":"IF(N15>#REF!,\"\",#REF!)","v":{"$error":"#REF!"}},null,null,null,null,8,{"$f":"IF(V15>#REF!,\"\",$T$7)","v":{"$error":"#REF!"}},{"$f":"IF(V15>=#REF!,\"\",IF(V15<=#REF!,#REF!,#REF!))","v":{"$error":"#REF!"}},{"$f":"IF(V15>#REF!,\"\",#REF!)","v":{"$error":"#REF!"}},null,null,null,null,null,null,null,8]
[9,{"$f":"IF(A16>=#REF!,\"\",IF(A16<=#REF!,#REF!,#REF!))","v":{"$error":"#REF!"}},{"$f":"IF(A16>=#REF!,\"\",IF(A16<=#REF!,#REF!,#REF!))","v":{"$error":"#REF!"}},{"$f":"IF(A16>#REF!,\"\",#REF!)","v":{"$error":"#REF!"}},null,9,{"$f":"IF(F16>=#REF!,\"\",IF(F16<=#REF!,#REF!,#REF!))","v":{"$error":"#REF!"}},{"$f":"IF(F16>=#REF!,\"\",IF(F16<=#REF!,#REF!,#REF!))","v":{"$error":"#REF!"}},{"$f":"IF(F16>#REF!,\"\",PMT(#REF!/12,#REF!,-#REF!))","v":{"$error":"#REF!"}},null,null,null,null,9,{"$f":"IF(N16>#REF!,\"\",$L$7)","v":{"$error":"#REF!"}},{"$f":"IF(N16>=#REF!,\"\",IF(N16<=#REF!,#REF!,#REF!))","v":{"$error":"#REF!"}},{"$f":"IF(N16>#REF!,\"\",#REF!)","v":{"$error":"#REF!"}},null,null,null,null,9,{"$f":"IF(V16>#REF!,\"\",$T$7)","v":{"$error":"#REF!"}},{"$f":"IF(V16>=#REF!,\"\",IF(V16<=#REF!,#REF!,#REF!))","v":{"$error":"#REF!"}},{"$f":"IF(V16>#REF!,\"\",#REF!)","v":{"$error":"#REF!"}},null,null,null,null,null,null,null,9]
[10,{"$f":"IF(A17>=#REF!,\"\",IF(A17<=#REF!,#REF!,#REF!))","v":{"$error":"#REF!"}},{"$f":"IF(A17>=#REF!,\"\",IF(A17<=#REF!,#REF!,#REF!))","v":{"$error":"#REF!"}},{"$f":"IF(A17>#REF!,\"\",#REF!)","v":{"$error":"#REF!"}},null,10,{"$f":"IF(F17>=#REF!,\"\",IF(F17<=#REF!,#REF!,#REF!))","v":{"$error":"#REF!"}},{"$f":"IF(F17>=#REF!,\"\",IF(F17<=#REF!,#REF!,#REF!))","v":{"$error":"#REF!"}},{"$f":"IF(F17>#REF!,\"\",PMT(#REF!/12,#REF!,-#REF!))","v":{"$error":"#REF!"}},null,null,null,null,10,{"$f":"IF(N17>#REF!,\"\",$L$7)","v":{"$error":"#REF!"}},{"$f":"IF(N17>=#REF!,\"\",IF(N17<=#REF!,#REF!,#REF!))","v":{"$error":"#REF!"}},{"$f":"IF(N17>#REF!,\"\",#REF!)","v":{"$error":"#REF!"}},null,null,null,null,10,{"$f":"IF(V17>#REF!,\"\",$T$7)","v":{"$error":"#REF!"}},{"$f":"IF(V17>=#REF!,\"\",IF(V17<=#REF!,#REF!,#REF!))","v":{"$error":"#REF!"}},{"$f":"IF(V17>#REF!,\"\",#REF!)","v":{"$error":"#REF!"}},null,null,null,null,null,null,null,10]
[11,{"$f":"IF(A18>=#REF!,\"\",IF(A18<=#REF!,#REF!,#REF!))","v":{"$error":"#REF!"}},{"$f":"IF(A18>=#REF!,\"\",IF(A18<=#REF!,#REF!,#REF!))","v":{"$error":"#REF!"}},{"$f":"IF(A18>#REF!,\"\",#REF!)","v":{"$error":"#REF!"}},null,11,{"$f":"IF(F18>=#REF!,\"\",IF(F18<=#REF!,#REF!,#REF!))","v":{"$error":"#REF!"}},{"$f":"IF(F18>=#REF!,\"\",IF(F18<=#REF!,#REF!,#REF!))","v":{"$error":"#REF!"}},{"$f":"IF(F18>#REF!,\"\",PMT(#REF!/12,#REF!,-#REF!))","v":{"$error":"#REF!"}},null,null,null,null,11,{"$f":"IF(N18>#REF!,\"\",$L$7)","v":{"$error":"#REF!"}},{"$f":"IF(N18>=#REF!,\"\",IF(N18<=#REF!,#REF!,#REF!))","v":{"$error":"#REF!"}},{"$f":"IF(N18>#REF!,\"\",#REF!)","v":{"$error":"#REF!"}},null,null,null,null,11,{"$f":"IF(V18>#REF!,\"\",$T$7)","v":{"$error":"#REF!"}},{"$f":"IF(V18>=#REF!,\"\",IF(V18<=#REF!,#REF!,#REF!))","v":{"$error":"#REF!"}},{"$f":"IF(V18>#REF!,\"\",#REF!)","v":{"$error":"#REF!"}},null,null,null,null,null,null,null,11]
[12,{"$f":"IF(A19>=#REF!,\"\",IF(A19<=#REF!,#REF!,#REF!))","v":{"$error":"#REF!"}},{"$f":"IF(A19>=#REF!,\"\",IF(A19<=#REF!,#REF!,#REF!))","v":{"$error":"#REF!"}},{"$f":"IF(A19>#REF!,\"\",#REF!)","v":{"$error":"#REF!"}},null,12,{"$f":"IF(F19>=#REF!,\"\",IF(F19<=#REF!,#REF!,#REF!))","v":{"$error":"#REF!"}},{"$f":"IF(F19>=#REF!,\"\",IF(F19<=#REF!,#REF!,#REF!))","v":{"$error":"#REF!"}},{"$f":"IF(F19>#REF!,\"\",PMT(#REF!/12,#REF!,-#REF!))","v":{"$error":"#REF!"}},null,null,null,null,12,{"$f":"IF(N19>#REF!,\"\",$L$7)","v":{"$error":"#REF!"}},{"$f":"IF(N19>=#REF!,\"\",IF(N19<=#REF!,#REF!,#REF!))","v":{"$error":"#REF!"}},{"$f":"IF(N19>#REF!,\"\",#REF!)","v":{"$error":"#REF!"}},null,null,null,null,12,{"$f":"IF(V19>#REF!,\"\",$T$7)","v":{"$error":"#REF!"}},{"$f":"IF(V19>=#REF!,\"\",IF(V19<=#REF!,#REF!,#REF!))","v":{"$error":"#REF!"}},{"$f":"IF(V19>#REF!,\"\",#REF!)","v":{"$error":"#REF!"}},null,null,null,null,null,null,null,12]
[13,{"$f":"IF(A20>=#REF!,\"\",IF(A20<=#REF!,#REF!,#REF!))","v":{"$error":"#REF!"}},{"$f":"IF(A20>=#REF!,\"\",IF(A20<=#REF!,#REF!,#REF!))","v":{"$error":"#REF!"}},{"$f":"IF(A20>#REF!,\"\",#REF!)","v":{"$error":"#REF!"}},null,13,{"$f":"IF(F20>=#REF!,\"\",IF(F20<=#REF!,#REF!,#REF!))","v":{"$error":"#REF!"}},{"$f":"IF(F20>=#REF!,\"\",IF(F20<=#REF!,#REF!,#REF!))","v":{"$error":"#REF!"}},{"$f":"IF(F20>#REF!,\"\",PMT(#REF!/12,#REF!,-#REF!))","v":{"$error":"#REF!"}},null,null,null,null,13,{"$f":"IF(N20>#REF!,\"\",$L$7)","v":{"$error":"#REF!"}},{"$f":"IF(N20>=#REF!,\"\",IF(N20<=#REF!,#REF!,#REF!))","v":{"$error":"#REF!"}},{"$f":"IF(N20>#REF!,\"\",#REF!)","v":{"$error":"#REF!"}},null,null,null,null,13,{"$f":"IF(V20>#REF!,\"\",$T$7)","v":{"$error":"#REF!"}},{"$f":"IF(V20>=#REF!,\"\",IF(V20<=#REF!,#REF!,#REF!))","v":{"$error":"#REF!"}},{"$f":"IF(V20>#REF!,\"\",#REF!)","v":{"$error":"#REF!"}},null,null,null,null,null,null,null,13]
[14,{"$f":"IF(A21>=#REF!,\"\",IF(A21<=#REF!,#REF!,#REF!))","v":{"$error":"#REF!"}},{"$f":"IF(A21>=#REF!,\"\",IF(A21<=#REF!,#REF!,#REF!))","v":{"$error":"#REF!"}},{"$f":"IF(A21>#REF!,\"\",#REF!)","v":{"$error":"#REF!"}},null,14,{"$f":"IF(F21>=#REF!,\"\",IF(F21<=#REF!,#REF!,#REF!))","v":{"$error":"#REF!"}},{"$f":"IF(F21>=#REF!,\"\",IF(F21<=#REF!,#REF!,#REF!))","v":{"$error":"#REF!"}},{"$f":"IF(F21>#REF!,\"\",PMT(#REF!/12,#REF!,-#REF!))","v":{"$error":"#REF!"}},null,null,null,null,14,{"$f":"IF(N21>#REF!,\"\",$L$7)","v":{"$error":"#REF!"}},{"$f":"IF(N21>=#REF!,\"\",IF(N21<=#REF!,#REF!,#REF!))","v":{"$error":"#REF!"}},{"$f":"IF(N21>#REF!,\"\",#REF!)","v":{"$error":"#REF!"}},null,null,null,null,14,{"$f":"IF(V21>#REF!,\"\",$T$7)","v":{"$error":"#REF!"}},{"$f":"IF(V21>=#REF!,\"\",IF(V21<=#REF!,#REF!,#REF!))","v":{"$error":"#REF!"}},{"$f":"IF(V21>#REF!,\"\",#REF!)","v":{"$error":"#REF!"}},null,null,null,null,null,null,null,14]
[15,{"$f":"IF(A22>=#REF!,\"\",IF(A22<=#REF!,#REF!,#REF!))","v":{"$error":"#REF!"}},{"$f":"IF(A22>=#REF!,\"\",IF(A22<=#REF!,#REF!,#REF!))","v":{"$error":"#REF!"}},{"$f":"IF(A22>#REF!,\"\",#REF!)","v":{"$error":"#REF!"}},null,15,{"$f":"IF(F22>=#REF!,\"\",IF(F22<=#REF!,#REF!,#REF!))","v":{"$error":"#REF!"}},{"$f":"IF(F22>=#REF!,\"\",IF(F22<=#REF!,#REF!,#REF!))","v":{"$error":"#REF!"}},{"$f":"IF(F22>#REF!,\"\",PMT(#REF!/12,#REF!,-#REF!))","v":{"$error":"#REF!"}},null,null,null,null,15,{"$f":"IF(N22>#REF!,\"\",$L$7)","v":{"$error":"#REF!"}},{"$f":"IF(N22>=#REF!,\"\",IF(N22<=#REF!,#REF!,#REF!))","v":{"$error":"#REF!"}},{"$f":"IF(N22>#REF!,\"\",#REF!)","v":{"$error":"#REF!"}},null,null,null,null,15,{"$f":"IF(V22>#REF!,\"\",$T$7)","v":{"$error":"#REF!"}},{"$f":"IF(V22>=#REF!,\"\",IF(V22<=#REF!,#REF!,#REF!))","v":{"$error":"#REF!"}},{"$f":"IF(V22>#REF!,\"\",#REF!)","v":{"$error":"#REF!"}},null,null,null,null,null,null,null,15]
[16,{"$f":"IF(A23>=#REF!,\"\",IF(A23<=#REF!,#REF!,#REF!))","v":{"$error":"#REF!"}},{"$f":"IF(A23>=#REF!,\"\",IF(A23<=#REF!,#REF!,#REF!))","v":{"$error":"#REF!"}},{"$f":"IF(A23>#REF!,\"\",#REF!)","v":{"$error":"#REF!"}},null,16,{"$f":"IF(F23>=#REF!,\"\",IF(F23<=#REF!,#REF!,#REF!))","v":{"$error":"#REF!"}},{"$f":"IF(F23>=#REF!,\"\",IF(F23<=#REF!,#REF!,#REF!))","v":{"$error":"#REF!"}},{"$f":"IF(F23>#REF!,\"\",PMT(#REF!/12,#REF!,-#REF!))","v":{"$error":"#REF!"}},null,null,null,null,16,{"$f":"IF(N23>#REF!,\"\",$L$7)","v":{"$error":"#REF!"}},{"$f":"IF(N23>=#REF!,\"\",IF(N23<=#REF!,#REF!,#REF!))","v":{"$error":"#REF!"}},{"$f":"IF(N23>#REF!,\"\",#REF!)","v":{"$error":"#REF!"}},null,null,null,null,16,{"$f":"IF(V23>#REF!,\"\",$T$7)","v":{"$error":"#REF!"}},{"$f":"IF(V23>=#REF!,\"\",IF(V23<=#REF!,#REF!,#REF!))","v":{"$error":"#REF!"}},{"$f":"IF(V23>#REF!,\"\",#REF!)","v":{"$error":"#REF!"}},null,null,null,null,null,null,null,16]
[17,{"$f":"IF(A24>=#REF!,\"\",IF(A24<=#REF!,#REF!,#REF!))","v":{"$error":"#REF!"}},{"$f":"IF(A24>=#REF!,\"\",IF(A24<=#REF!,#REF!,#REF!))","v":{"$error":"#REF!"}},{"$f":"IF(A24>#REF!,\"\",#REF!)","v":{"$error":"#REF!"}},null,17,{"$f":"IF(F24>=#REF!,\"\",IF(F24<=#REF!,#REF!,#REF!))","v":{"$error":"#REF!"}},{"$f":"IF(F24>=#REF!,\"\",IF(F24<=#REF!,#REF!,#REF!))","v":{"$error":"#REF!"}},{"$f":"IF(F24>#REF!,\"\",PMT(#REF!/12,#REF!,-#REF!))","v":{"$error":"#REF!"}},null,null,null,null,17,{"$f":"IF(N24>#REF!,\"\",$L$7)","v":{"$error":"#REF!"}},{"$f":"IF(N24>=#REF!,\"\",IF(N24<=#REF!,#REF!,#REF!))","v":{"$error":"#REF!"}},{"$f":"IF(N24>#REF!,\"\",#REF!)","v":{"$error":"#REF!"}},null,null,null,null,17,{"$f":"IF(V24>#REF!,\"\",$T$7)","v":{"$error":"#REF!"}},{"$f":"IF(V24>=#REF!,\"\",IF(V24<=#REF!,#REF!,#REF!))","v":{"$error":"#REF!"}},{"$f":"IF(V24>#REF!,\"\",#REF!)","v":{"$error":"#REF!"}},null,null,null,null,null,null,null,17]
[18,{"$f":"IF(A25>=#REF!,\"\",IF(A25<=#REF!,#REF!,#REF!))","v":{"$error":"#REF!"}},{"$f":"IF(A25>=#REF!,\"\",IF(A25<=#REF!,#REF!,#REF!))","v":{"$error":"#REF!"}},{"$f":"IF(A25>#REF!,\"\",#REF!)","v":{"$error":"#REF!"}},null,18,{"$f":"IF(F25>=#REF!,\"\",IF(F25<=#REF!,#REF!,#REF!))","v":{"$error":"#REF!"}},{"$f":"IF(F25>=#REF!,\"\",IF(F25<=#REF!,#REF!,#REF!))","v":{"$error":"#REF!"}},{"$f":"IF(F25>#REF!,\"\",PMT(#REF!/12,#REF!,-#REF!))","v":{"$error":"#REF!"}},null,null,null,null,18,{"$f":"IF(N25>#REF!,\"\",$L$7)","v":{"$error":"#REF!"}},{"$f":"IF(N25>=#REF!,\"\",IF(N25<=#REF!,#REF!,#REF!))","v":{"$error":"#REF!"}},{"$f":"IF(N25>#REF!,\"\",#REF!)","v":{"$error":"#REF!"}},null,null,null,null,18,{"$f":"IF(V25>#REF!,\"\",$T$7)","v":{"$error":"#REF!"}},{"$f":"IF(V25>=#REF!,\"\",IF(V25<=#REF!,#REF!,#REF!))","v":{"$error":"#REF!"}},{"$f":"IF(V25>#REF!,\"\",#REF!)","v":{"$error":"#REF!"}},null,null,null,null,null,null,null,18]
[19,{"$f":"IF(A26>=#REF!,\"\",IF(A26<=#REF!,#REF!,#REF!))","v":{"$error":"#REF!"}},{"$f":"IF(A26>=#REF!,\"\",IF(A26<=#REF!,#REF!,#REF!))","v":{"$error":"#REF!"}},{"$f":"IF(A26>#REF!,\"\",#REF!)","v":{"$error":"#REF!"}},null,19,{"$f":"IF(F26>=#REF!,\"\",IF(F26<=#REF!,#REF!,#REF!))","v":{"$error":"#REF!"}},{"$f":"IF(F26>=#REF!,\"\",IF(F26<=#REF!,#REF!,#REF!))","v":{"$error":"#REF!"}},{"$f":"IF(F26>#REF!,\"\",PMT(#REF!/12,#REF!,-#REF!))","v":{"$error":"#REF!"}},null,null,null,null,19,{"$f":"IF(N26>#REF!,\"\",$L$7)","v":{"$error":"#REF!"}},{"$f":"IF(N26>=#REF!,\"\",IF(N26<=#REF!,#REF!,#REF!))","v":{"$error":"#REF!"}},{"$f":"IF(N26>#REF!,\"\",#REF!)","v":{"$error":"#REF!"}},null,null,null,null,19,{"$f":"IF(V26>#REF!,\"\",$T$7)","v":{"$error":"#REF!"}},{"$f":"IF(V26>=#REF!,\"\",IF(V26<=#REF!,#REF!,#REF!))","v":{"$error":"#REF!"}},{"$f":"IF(V26>#REF!,\"\",#REF!)","v":{"$error":"#REF!"}},null,null,null,null,null,null,null,19]
[20,{"$f":"IF(A27>=#REF!,\"\",IF(A27<=#REF!,#REF!,#REF!))","v":{"$error":"#REF!"}},{"$f":"IF(A27>=#REF!,\"\",IF(A27<=#REF!,#REF!,#REF!))","v":{"$error":"#REF!"}},{"$f":"IF(A27>#REF!,\"\",#REF!)","v":{"$error":"#REF!"}},null,20,{"$f":"IF(F27>=#REF!,\"\",IF(F27<=#REF!,#REF!,#REF!))","v":{"$error":"#REF!"}},{"$f":"IF(F27>=#REF!,\"\",IF(F27<=#REF!,#REF!,#REF!))","v":{"$error":"#REF!"}},{"$f":"IF(F27>#REF!,\"\",PMT(#REF!/12,#REF!,-#REF!))","v":{"$error":"#REF!"}},null,null,null,null,20,{"$f":"IF(N27>#REF!,\"\",$L$7)","v":{"$error":"#REF!"}},{"$f":"IF(N27>=#REF!,\"\",IF(N27<=#REF!,#REF!,#REF!))","v":{"$error":"#REF!"}},{"$f":"IF(N27>#REF!,\"\",#REF!)","v":{"$error":"#REF!"}},null,null,null,null,20,{"$f":"IF(V27>#REF!,\"\",$T$7)","v":{"$error":"#REF!"}},{"$f":"IF(V27>=#REF!,\"\",IF(V27<=#REF!,#REF!,#REF!))","v":{"$error":"#REF!"}},{"$f":"IF(V27>#REF!,\"\",#REF!)","v":{"$error":"#REF!"}},null,null,null,null,null,null,null,20]
[21,{"$f":"IF(A28>=#REF!,\"\",IF(A28<=#REF!,#REF!,#REF!))","v":{"$error":"#REF!"}},{"$f":"IF(A28>=#REF!,\"\",IF(A28<=#REF!,#REF!,#REF!))","v":{"$error":"#REF!"}},{"$f":"IF(A28>#REF!,\"\",#REF!)","v":{"$error":"#REF!"}},null,21,{"$f":"IF(F28>=#REF!,\"\",IF(F28<=#REF!,#REF!,#REF!))","v":{"$error":"#REF!"}},{"$f":"IF(F28>=#REF!,\"\",IF(F28<=#REF!,#REF!,#REF!))","v":{"$error":"#REF!"}},{"$f":"IF(F28>#REF!,\"\",PMT(#REF!/12,#REF!,-#REF!))","v":{"$error":"#REF!"}},null,null,null,null,21,{"$f":"IF(N28>#REF!,\"\",$L$7)","v":{"$error":"#REF!"}},{"$f":"IF(N28>=#REF!,\"\",IF(N28<=#REF!,#REF!,#REF!))","v":{"$error":"#REF!"}},{"$f":"IF(N28>#REF!,\"\",#REF!)","v":{"$error":"#REF!"}},null,null,null,null,21,{"$f":"IF(V28>#REF!,\"\",$T$7)","v":{"$error":"#REF!"}},{"$f":"IF(V28>=#REF!,\"\",IF(V28<=#REF!,#REF!,#REF!))","v":{"$error":"#REF!"}},{"$f":"IF(V28>#REF!,\"\",#REF!)","v":{"$error":"#REF!"}},null,null,null,null,null,null,null,21]
[22,{"$f":"IF(A29>=#REF!,\"\",IF(A29<=#REF!,#REF!,#REF!))","v":{"$error":"#REF!"}},{"$f":"IF(A29>=#REF!,\"\",IF(A29<=#REF!,#REF!,#REF!))","v":{"$error":"#REF!"}},{"$f":"IF(A29>#REF!,\"\",#REF!)","v":{"$error":"#REF!"}},null,22,{"$f":"IF(F29>=#REF!,\"\",IF(F29<=#REF!,#REF!,#REF!))","v":{"$error":"#REF!"}},{"$f":"IF(F29>=#REF!,\"\",IF(F29<=#REF!,#REF!,#REF!))","v":{"$error":"#REF!"}},{"$f":"IF(F29>#REF!,\"\",PMT(#REF!/12,#REF!,-#REF!))","v":{"$error":"#REF!"}},null,null,null,null,22,{"$f":"IF(N29>#REF!,\"\",$L$7)","v":{"$error":"#REF!"}},{"$f":"IF(N29>=#REF!,\"\",IF(N29<=#REF!,#REF!,#REF!))","v":{"$error":"#REF!"}},{"$f":"IF(N29>#REF!,\"\",#REF!)","v":{"$error":"#REF!"}},null,null,null,null,22,{"$f":"IF(V29>#REF!,\"\",$T$7)","v":{"$error":"#REF!"}},{"$f":"IF(V29>=#REF!,\"\",IF(V29<=#REF!,#REF!,#REF!))","v":{"$error":"#REF!"}},{"$f":"IF(V29>#REF!,\"\",#REF!)","v":{"$error":"#REF!"}},null,null,null,null,null,null,null,22]
[23,{"$f":"IF(A30>=#REF!,\"\",IF(A30<=#REF!,#REF!,#REF!))","v":{"$error":"#REF!"}},{"$f":"IF(A30>=#REF!,\"\",IF(A30<=#REF!,#REF!,#REF!))","v":{"$error":"#REF!"}},{"$f":"IF(A30>#REF!,\"\",#REF!)","v":{"$error":"#REF!"}},null,23,{"$f":"IF(F30>=#REF!,\"\",IF(F30<=#REF!,#REF!,#REF!))","v":{"$error":"#REF!"}},{"$f":"IF(F30>=#REF!,\"\",IF(F30<=#REF!,#REF!,#REF!))","v":{"$error":"#REF!"}},{"$f":"IF(F30>#REF!,\"\",PMT(#REF!/12,#REF!,-#REF!))","v":{"$error":"#REF!"}},null,null,null,null,23,{"$f":"IF(N30>#REF!,\"\",$L$7)","v":{"$error":"#REF!"}},{"$f":"IF(N30>=#REF!,\"\",IF(N30<=#REF!,#REF!,#REF!))","v":{"$error":"#REF!"}},{"$f":"IF(N30>#REF!,\"\",#REF!)","v":{"$error":"#REF!"}},null,null,null,null,23,{"$f":"IF(V30>#REF!,\"\",$T$7)","v":{"$error":"#REF!"}},{"$f":"IF(V30>=#REF!,\"\",IF(V30<=#REF!,#REF!,#REF!))","v":{"$error":"#REF!"}},{"$f":"IF(V30>#REF!,\"\",#REF!)","v":{"$error":"#REF!"}},null,null,null,null,null,null,null,23]
[24,{"$f":"IF(A31>=#REF!,\"\",IF(A31<=#REF!,#REF!,#REF!))","v":{"$error":"#REF!"}},{"$f":"IF(A31>=#REF!,\"\",IF(A31<=#REF!,#REF!,#REF!))","v":{"$error":"#REF!"}},{"$f":"IF(A31>#REF!,\"\",#REF!)","v":{"$error":"#REF!"}},null,24,{"$f":"IF(F31>=#REF!,\"\",IF(F31<=#REF!,#REF!,#REF!))","v":{"$error":"#REF!"}},{"$f":"IF(F31>=#REF!,\"\",IF(F31<=#REF!,#REF!,#REF!))","v":{"$error":"#REF!"}},{"$f":"IF(F31>#REF!,\"\",PMT(#REF!/12,#REF!,-#REF!))","v":{"$error":"#REF!"}},null,null,null,null,24,{"$f":"IF(N31>#REF!,\"\",$L$7)","v":{"$error":"#REF!"}},{"$f":"IF(N31>=#REF!,\"\",IF(N31<=#REF!,#REF!,#REF!))","v":{"$error":"#REF!"}},{"$f":"IF(N31>#REF!,\"\",#REF!)","v":{"$error":"#REF!"}},null,null,null,null,24,{"$f":"IF(V31>#REF!,\"\",$T$7)","v":{"$error":"#REF!"}},{"$f":"IF(V31>=#REF!,\"\",IF(V31<=#REF!,#REF!,#REF!))","v":{"$error":"#REF!"}},{"$f":"IF(V31>#REF!,\"\",#REF!)","v":{"$error":"#REF!"}},null,null,null,null,null,null,null,24]
[25,{"$f":"IF(A32>=#REF!,\"\",IF(A32<=#REF!,#REF!,#REF!))","v":{"$error":"#REF!"}},{"$f":"IF(A32>=#REF!,\"\",IF(A32<=#REF!,#REF!,#REF!))","v":{"$error":"#REF!"}},{"$f":"IF(A32>#REF!,\"\",#REF!)","v":{"$error":"#REF!"}},null,25,{"$f":"IF(F32>=#REF!,\"\",IF(F32<=#REF!,#REF!,#REF!))","v":{"$error":"#REF!"}},{"$f":"IF(F32>=#REF!,\"\",IF(F32<=#REF!,#REF!,#REF!))","v":{"$error":"#REF!"}},{"$f":"IF(F32>#REF!,\"\",PMT(#REF!/12,#REF!,-#REF!))","v":{"$error":"#REF!"}},null,null,null,null,25,{"$f":"IF(N32>#REF!,\"\",$L$7)","v":{"$error":"#REF!"}},{"$f":"IF(N32>=#REF!,\"\",IF(N32<=#REF!,#REF!,#REF!))","v":{"$error":"#REF!"}},{"$f":"IF(N32>#REF!,\"\",#REF!)","v":{"$error":"#REF!"}},null,null,null,null,25,{"$f":"IF(V32>#REF!,\"\",$T$7)","v":{"$error":"#REF!"}},{"$f":"IF(V32>=#REF!,\"\",IF(V32<=#REF!,#REF!,#REF!))","v":{"$error":"#REF!"}},{"$f":"IF(V32>#REF!,\"\",#REF!)","v":{"$error":"#REF!"}},null,null,null,null,null,null,null,25]
[26,{"$f":"IF(A33>=#REF!,\"\",IF(A33<=#REF!,#REF!,#REF!))","v":{"$error":"#REF!"}},{"$f":"IF(A33>=#REF!,\"\",IF(A33<=#REF!,#REF!,#REF!))","v":{"$error":"#REF!"}},{"$f":"IF(A33>#REF!,\"\",#REF!)","v":{"$error":"#REF!"}},null,26,{"$f":"IF(F33>=#REF!,\"\",IF(F33<=#REF!,#REF!,#REF!))","v":{"$error":"#REF!"}},{"$f":"IF(F33>=#REF!,\"\",IF(F33<=#REF!,#REF!,#REF!))","v":{"$error":"#REF!"}},{"$f":"IF(F33>#REF!,\"\",PMT(#REF!/12,#REF!,-#REF!))","v":{"$error":"#REF!"}},null,null,null,null,26,{"$f":"IF(N33>#REF!,\"\",$L$7)","v":{"$error":"#REF!"}},{"$f":"IF(N33>=#REF!,\"\",IF(N33<=#REF!,#REF!,#REF!))","v":{"$error":"#REF!"}},{"$f":"IF(N33>#REF!,\"\",#REF!)","v":{"$error":"#REF!"}},null,null,null,null,26,{"$f":"IF(V33>#REF!,\"\",$T$7)","v":{"$error":"#REF!"}},{"$f":"IF(V33>=#REF!,\"\",IF(V33<=#REF!,#REF!,#REF!))","v":{"$error":"#REF!"}},{"$f":"IF(V33>#REF!,\"\",#REF!)","v":{"$error":"#REF!"}},null,null,null,null,null,null,null,26]
[27,{"$f":"IF(A34>=#REF!,\"\",IF(A34<=#REF!,#REF!,#REF!))","v":{"$error":"#REF!"}},{"$f":"IF(A34>=#REF!,\"\",IF(A34<=#REF!,#REF!,#REF!))","v":{"$error":"#REF!"}},{"$f":"IF(A34>#REF!,\"\",#REF!)","v":{"$error":"#REF!"}},null,27,{"$f":"IF(F34>=#REF!,\"\",IF(F34<=#REF!,#REF!,#REF!))","v":{"$error":"#REF!"}},{"$f":"IF(F34>=#REF!,\"\",IF(F34<=#REF!,#REF!,#REF!))","v":{"$error":"#REF!"}},{"$f":"IF(F34>#REF!,\"\",PMT(#REF!/12,#REF!,-#REF!))","v":{"$error":"#REF!"}},null,null,null,null,27,{"$f":"IF(N34>#REF!,\"\",$L$7)","v":{"$error":"#REF!"}},{"$f":"IF(N34>=#REF!,\"\",IF(N34<=#REF!,#REF!,#REF!))","v":{"$error":"#REF!"}},{"$f":"IF(N34>#REF!,\"\",#REF!)","v":{"$error":"#REF!"}},null,null,null,null,27,{"$f":"IF(V34>#REF!,\"\",$T$7)","v":{"$error":"#REF!"}},{"$f":"IF(V34>=#REF!,\"\",IF(V34<=#REF!,#REF!,#REF!))","v":{"$error":"#REF!"}},{"$f":"IF(V34>#REF!,\"\",#REF!)","v":{"$error":"#REF!"}},null,null,null,null,null,null,null,27]
[28,{"$f":"IF(A35>=#REF!,\"\",IF(A35<=#REF!,#REF!,#REF!))","v":{"$error":"#REF!"}},{"$f":"IF(A35>=#REF!,\"\",IF(A35<=#REF!,#REF!,#REF!))","v":{"$error":"#REF!"}},{"$f":"IF(A35>#REF!,\"\",#REF!)","v":{"$error":"#REF!"}},null,28,{"$f":"IF(F35>=#REF!,\"\",IF(F35<=#REF!,#REF!,#REF!))","v":{"$error":"#REF!"}},{"$f":"IF(F35>=#REF!,\"\",IF(F35<=#REF!,#REF!,#REF!))","v":{"$error":"#REF!"}},{"$f":"IF(F35>#REF!,\"\",PMT(#REF!/12,#REF!,-#REF!))","v":{"$error":"#REF!"}},null,null,null,null,28,{"$f":"IF(N35>#REF!,\"\",$L$7)","v":{"$error":"#REF!"}},{"$f":"IF(N35>=#REF!,\"\",IF(N35<=#REF!,#REF!,#REF!))","v":{"$error":"#REF!"}},{"$f":"IF(N35>#REF!,\"\",#REF!)","v":{"$error":"#REF!"}},null,null,null,null,28,{"$f":"IF(V35>#REF!,\"\",$T$7)","v":{"$error":"#REF!"}},{"$f":"IF(V35>=#REF!,\"\",IF(V35<=#REF!,#REF!,#REF!))","v":{"$error":"#REF!"}},{"$f":"IF(V35>#REF!,\"\",#REF!)","v":{"$error":"#REF!"}},null,null,null,null,null,null,null,28]
[29,{"$f":"IF(A36>=#REF!,\"\",IF(A36<=#REF!,#REF!,#REF!))","v":{"$error":"#REF!"}},{"$f":"IF(A36>=#REF!,\"\",IF(A36<=#REF!,#REF!,#REF!))","v":{"$error":"#REF!"}},{"$f":"IF(A36>#REF!,\"\",#REF!)","v":{"$error":"#REF!"}},null,29,{"$f":"IF(F36>=#REF!,\"\",IF(F36<=#REF!,#REF!,#REF!))","v":{"$error":"#REF!"}},{"$f":"IF(F36>=#REF!,\"\",IF(F36<=#REF!,#REF!,#REF!))","v":{"$error":"#REF!"}},{"$f":"IF(F36>#REF!,\"\",PMT(#REF!/12,#REF!,-#REF!))","v":{"$error":"#REF!"}},null,null,null,null,29,{"$f":"IF(N36>#REF!,\"\",$L$7)","v":{"$error":"#REF!"}},{"$f":"IF(N36>=#REF!,\"\",IF(N36<=#REF!,#REF!,#REF!))","v":{"$error":"#REF!"}},{"$f":"IF(N36>#REF!,\"\",#REF!)","v":{"$error":"#REF!"}},null,null,null,null,29,{"$f":"IF(V36>#REF!,\"\",$T$7)","v":{"$error":"#REF!"}},{"$f":"IF(V36>=#REF!,\"\",IF(V36<=#REF!,#REF!,#REF!))","v":{"$error":"#REF!"}},{"$f":"IF(V36>#REF!,\"\",#REF!)","v":{"$error":"#REF!"}},null,null,null,null,null,null,null,29]
[30,{"$f":"IF(A37>=#REF!,\"\",IF(A37<=#REF!,#REF!,#REF!))","v":{"$error":"#REF!"}},{"$f":"IF(A37>=#REF!,\"\",IF(A37<=#REF!,#REF!,#REF!))","v":{"$error":"#REF!"}},{"$f":"IF(A37>#REF!,\"\",#REF!)","v":{"$error":"#REF!"}},null,30,{"$f":"IF(F37>=#REF!,\"\",IF(F37<=#REF!,#REF!,#REF!))","v":{"$error":"#REF!"}},{"$f":"IF(F37>=#REF!,\"\",IF(F37<=#REF!,#REF!,#REF!))","v":{"$error":"#REF!"}},{"$f":"IF(F37>#REF!,\"\",PMT(#REF!/12,#REF!,-#REF!))","v":{"$error":"#REF!"}},null,null,null,null,30,{"$f":"IF(N37>#REF!,\"\",$L$7)","v":{"$error":"#REF!"}},{"$f":"IF(N37>=#REF!,\"\",IF(N37<=#REF!,#REF!,#REF!))","v":{"$error":"#REF!"}},{"$f":"IF(N37>#REF!,\"\",#REF!)","v":{"$error":"#REF!"}},null,null,null,null,30,{"$f":"IF(V37>#REF!,\"\",$T$7)","v":{"$error":"#REF!"}},{"$f":"IF(V37>=#REF!,\"\",IF(V37<=#REF!,#REF!,#REF!))","v":{"$error":"#REF!"}},{"$f":"IF(V37>#REF!,\"\",#REF!)","v":{"$error":"#REF!"}},null,null,null,null,null,null,null,30]
[31,{"$f":"IF(A38>=#REF!,\"\",IF(A38<=#REF!,#REF!,#REF!))","v":{"$error":"#REF!"}},{"$f":"IF(A38>=#REF!,\"\",IF(A38<=#REF!,#REF!,#REF!))","v":{"$error":"#REF!"}},{"$f":"IF(A38>#REF!,\"\",#REF!)","v":{"$error":"#REF!"}},null,31,{"$f":"IF(F38>=#REF!,\"\",IF(F38<=#REF!,#REF!,#REF!))","v":{"$error":"#REF!"}},{"$f":"IF(F38>=#REF!,\"\",IF(F38<=#REF!,#REF!,#REF!))","v":{"$error":"#REF!"}},{"$f":"IF(F38>#REF!,\"\",PMT(#REF!/12,#REF!,-#REF!))","v":{"$error":"#REF!"}},null,null,null,null,31,{"$f":"IF(N38>#REF!,\"\",$L$7)","v":{"$error":"#REF!"}},{"$f":"IF(N38>=#REF!,\"\",IF(N38<=#REF!,#REF!,#REF!))","v":{"$error":"#REF!"}},{"$f":"IF(N38>#REF!,\"\",#REF!)","v":{"$error":"#REF!"}},null,null,null,null,31,{"$f":"IF(V38>#REF!,\"\",$T$7)","v":{"$error":"#REF!"}},{"$f":"IF(V38>=#REF!,\"\",IF(V38<=#REF!,#REF!,#REF!))","v":{"$error":"#REF!"}},{"$f":"IF(V38>#REF!,\"\",#REF!)","v":{"$error":"#REF!"}},null,null,null,null,null,null,null,31]
[32,{"$f":"IF(A39>=#REF!,\"\",IF(A39<=#REF!,#REF!,#REF!))","v":{"$error":"#REF!"}},{"$f":"IF(A39>=#REF!,\"\",IF(A39<=#REF!,#REF!,#REF!))","v":{"$error":"#REF!"}},{"$f":"IF(A39>#REF!,\"\",#REF!)","v":{"$error":"#REF!"}},null,32,{"$f":"IF(F39>=#REF!,\"\",IF(F39<=#REF!,#REF!,#REF!))","v":{"$error":"#REF!"}},{"$f":"IF(F39>=#REF!,\"\",IF(F39<=#REF!,#REF!,#REF!))","v":{"$error":"#REF!"}},{"$f":"IF(F39>#REF!,\"\",PMT(#REF!/12,#REF!,-#REF!))","v":{"$error":"#REF!"}},null,null,null,null,32,{"$f":"IF(N39>#REF!,\"\",$L$7)","v":{"$error":"#REF!"}},{"$f":"IF(N39>=#REF!,\"\",IF(N39<=#REF!,#REF!,#REF!))","v":{"$error":"#REF!"}},{"$f":"IF(N39>#REF!,\"\",#REF!)","v":{"$error":"#REF!"}},null,null,null,null,32,{"$f":"IF(V39>#REF!,\"\",$T$7)","v":{"$error":"#REF!"}},{"$f":"IF(V39>=#REF!,\"\",IF(V39<=#REF!,#REF!,#REF!))","v":{"$error":"#REF!"}},{"$f":"IF(V39>#REF!,\"\",#REF!)","v":{"$error":"#REF!"}},null,null,null,null,null,null,null,32]
[33,{"$f":"IF(A40>=#REF!,\"\",IF(A40<=#REF!,#REF!,#REF!))","v":{"$error":"#REF!"}},{"$f":"IF(A40>=#REF!,\"\",IF(A40<=#REF!,#REF!,#REF!))","v":{"$error":"#REF!"}},{"$f":"IF(A40>#REF!,\"\",#REF!)","v":{"$error":"#REF!"}},null,33,{"$f":"IF(F40>=#REF!,\"\",IF(F40<=#REF!,#REF!,#REF!))","v":{"$error":"#REF!"}},{"$f":"IF(F40>=#REF!,\"\",IF(F40<=#REF!,#REF!,#REF!))","v":{"$error":"#REF!"}},{"$f":"IF(F40>#REF!,\"\",PMT(#REF!/12,#REF!,-#REF!))","v":{"$error":"#REF!"}},null,null,null,null,33,{"$f":"IF(N40>#REF!,\"\",$L$7)","v":{"$error":"#REF!"}},{"$f":"IF(N40>=#REF!,\"\",IF(N40<=#REF!,#REF!,#REF!))","v":{"$error":"#REF!"}},{"$f":"IF(N40>#REF!,\"\",#REF!)","v":{"$error":"#REF!"}},null,null,null,null,33,{"$f":"IF(V40>#REF!,\"\",$T$7)","v":{"$error":"#REF!"}},{"$f":"IF(V40>=#REF!,\"\",IF(V40<=#REF!,#REF!,#REF!))","v":{"$error":"#REF!"}},{"$f":"IF(V40>#REF!,\"\",#REF!)","v":{"$error":"#REF!"}},null,null,null,null,null,null,null,33]
[34,{"$f":"IF(A41>=#REF!,\"\",IF(A41<=#REF!,#REF!,#REF!))","v":{"$error":"#REF!"}},{"$f":"IF(A41>=#REF!,\"\",IF(A41<=#REF!,#REF!,#REF!))","v":{"$error":"#REF!"}},{"$f":"IF(A41>#REF!,\"\",#REF!)","v":{"$error":"#REF!"}},null,34,{"$f":"IF(F41>=#REF!,\"\",IF(F41<=#REF!,#REF!,#REF!))","v":{"$error":"#REF!"}},{"$f":"IF(F41>=#REF!,\"\",IF(F41<=#REF!,#REF!,#REF!))","v":{"$error":"#REF!"}},{"$f":"IF(F41>#REF!,\"\",PMT(#REF!/12,#REF!,-#REF!))","v":{"$error":"#REF!"}},null,null,null,null,34,{"$f":"IF(N41>#REF!,\"\",$L$7)","v":{"$error":"#REF!"}},{"$f":"IF(N41>=#REF!,\"\",IF(N41<=#REF!,#REF!,#REF!))","v":{"$error":"#REF!"}},{"$f":"IF(N41>#REF!,\"\",#REF!)","v":{"$error":"#REF!"}},null,null,null,null,34,{"$f":"IF(V41>#REF!,\"\",$T$7)","v":{"$error":"#REF!"}},{"$f":"IF(V41>=#REF!,\"\",IF(V41<=#REF!,#REF!,#REF!))","v":{"$error":"#REF!"}},{"$f":"IF(V41>#REF!,\"\",#REF!)","v":{"$error":"#REF!"}},null,null,null,null,null,null,null,34]
[35,{"$f":"IF(A42>=#REF!,\"\",IF(A42<=#REF!,#REF!,#REF!))","v":{"$error":"#REF!"}},{"$f":"IF(A42>=#REF!,\"\",IF(A42<=#REF!,#REF!,#REF!))","v":{"$error":"#REF!"}},{"$f":"IF(A42>#REF!,\"\",#REF!)","v":{"$error":"#REF!"}},null,35,{"$f":"IF(F42>=#REF!,\"\",IF(F42<=#REF!,#REF!,#REF!))","v":{"$error":"#REF!"}},{"$f":"IF(F42>=#REF!,\"\",IF(F42<=#REF!,#REF!,#REF!))","v":{"$error":"#REF!"}},{"$f":"IF(F42>#REF!,\"\",PMT(#REF!/12,#REF!,-#REF!))","v":{"$error":"#REF!"}},null,null,null,null,35,{"$f":"IF(N42>#REF!,\"\",$L$7)","v":{"$error":"#REF!"}},{"$f":"IF(N42>=#REF!,\"\",IF(N42<=#REF!,#REF!,#REF!))","v":{"$error":"#REF!"}},{"$f":"IF(N42>#REF!,\"\",#REF!)","v":{"$error":"#REF!"}},null,null,null,null,35,{"$f":"IF(V42>#REF!,\"\",$T$7)","v":{"$error":"#REF!"}},{"$f":"IF(V42>=#REF!,\"\",IF(V42<=#REF!,#REF!,#REF!))","v":{"$error":"#REF!"}},{"$f":"IF(V42>#REF!,\"\",#REF!)","v":{"$error":"#REF!"}},null,null,null,null,null,null,null,35]
[36,{"$f":"IF(A43>=#REF!,\"\",IF(A43<=#REF!,#REF!,#REF!))","v":{"$error":"#REF!"}},{"$f":"IF(A43>=#REF!,\"\",IF(A43<=#REF!,#REF!,#REF!))","v":{"$error":"#REF!"}},{"$f":"IF(A43>#REF!,\"\",#REF!)","v":{"$error":"#REF!"}},null,36,{"$f":"IF(F43>=#REF!,\"\",IF(F43<=#REF!,#REF!,#REF!))","v":{"$error":"#REF!"}},{"$f":"IF(F43>=#REF!,\"\",IF(F43<=#REF!,#REF!,#REF!))","v":{"$error":"#REF!"}},{"$f":"IF(F43>#REF!,\"\",PMT(#REF!/12,#REF!,-#REF!))","v":{"$error":"#REF!"}},null,null,null,null,36,{"$f":"IF(N43>#REF!,\"\",$L$7)","v":{"$error":"#REF!"}},{"$f":"IF(N43>=#REF!,\"\",IF(N43<=#REF!,#REF!,#REF!))","v":{"$error":"#REF!"}},{"$f":"IF(N43>#REF!,\"\",#REF!)","v":{"$error":"#REF!"}},null,null,null,null,36,{"$f":"IF(V43>#REF!,\"\",$T$7)","v":{"$error":"#REF!"}},{"$f":"IF(V43>=#REF!,\"\",IF(V43<=#REF!,#REF!,#REF!))","v":{"$error":"#REF!"}},{"$f":"IF(V43>#REF!,\"\",#REF!)","v":{"$error":"#REF!"}},null,null,null,null,null,null,null,36]
[37,{"$f":"IF(A44>=#REF!,\"\",IF(A44<=#REF!,#REF!,#REF!))","v":{"$error":"#REF!"}},{"$f":"IF(A44>=#REF!,\"\",IF(A44<=#REF!,#REF!,#REF!))","v":{"$error":"#REF!"}},{"$f":"IF(A44>#REF!,\"\",#REF!)","v":{"$error":"#REF!"}},null,37,{"$f":"IF(F44>=#REF!,\"\",IF(F44<=#REF!,#REF!,#REF!))","v":{"$error":"#REF!"}},{"$f":"IF(F44>=#REF!,\"\",IF(F44<=#REF!,#REF!,#REF!))","v":{"$error":"#REF!"}},{"$f":"IF(F44>#REF!,\"\",PMT(#REF!/12,#REF!,-#REF!))","v":{"$error":"#REF!"}},null,null,null,null,37,{"$f":"IF(N44>#REF!,\"\",$L$7)","v":{"$error":"#REF!"}},{"$f":"IF(N44>=#REF!,\"\",IF(N44<=#REF!,#REF!,#REF!))","v":{"$error":"#REF!"}},{"$f":"IF(N44>#REF!,\"\",#REF!)","v":{"$error":"#REF!"}},null,null,null,null,37,{"$f":"IF(V44>#REF!,\"\",$T$7)","v":{"$error":"#REF!"}},{"$f":"IF(V44>=#REF!,\"\",IF(V44<=#REF!,#REF!,#REF!))","v":{"$error":"#REF!"}},{"$f":"IF(V44>#REF!,\"\",#REF!)","v":{"$error":"#REF!"}},null,null,null,null,null,null,null,37]
[38,{"$f":"IF(A45>=#REF!,\"\",IF(A45<=#REF!,#REF!,#REF!))","v":{"$error":"#REF!"}},{"$f":"IF(A45>=#REF!,\"\",IF(A45<=#REF!,#REF!,#REF!))","v":{"$error":"#REF!"}},{"$f":"IF(A45>#REF!,\"\",#REF!)","v":{"$error":"#REF!"}},null,38,{"$f":"IF(F45>=#REF!,\"\",IF(F45<=#REF!,#REF!,#REF!))","v":{"$error":"#REF!"}},{"$f":"IF(F45>=#REF!,\"\",IF(F45<=#REF!,#REF!,#REF!))","v":{"$error":"#REF!"}},{"$f":"IF(F45>#REF!,\"\",PMT(#REF!/12,#REF!,-#REF!))","v":{"$error":"#REF!"}},null,null,null,null,38,{"$f":"IF(N45>#REF!,\"\",$L$7)","v":{"$error":"#REF!"}},{"$f":"IF(N45>=#REF!,\"\",IF(N45<=#REF!,#REF!,#REF!))","v":{"$error":"#REF!"}},{"$f":"IF(N45>#REF!,\"\",#REF!)","v":{"$error":"#REF!"}},null,null,null,null,38,{"$f":"IF(V45>#REF!,\"\",$T$7)","v":{"$error":"#REF!"}},{"$f":"IF(V45>=#REF!,\"\",IF(V45<=#REF!,#REF!,#REF!))","v":{"$error":"#REF!"}},{"$f":"IF(V45>#REF!,\"\",#REF!)","v":{"$error":"#REF!"}},null,null,null,null,null,null,null,38]
[39,{"$f":"IF(A46>=#REF!,\"\",IF(A46<=#REF!,#REF!,#REF!))","v":{"$error":"#REF!"}},{"$f":"IF(A46>=#REF!,\"\",IF(A46<=#REF!,#REF!,#REF!))","v":{"$error":"#REF!"}},{"$f":"IF(A46>#REF!,\"\",#REF!)","v":{"$error":"#REF!"}},null,39,{"$f":"IF(F46>=#REF!,\"\",IF(F46<=#REF!,#REF!,#REF!))","v":{"$error":"#REF!"}},{"$f":"IF(F46>=#REF!,\"\",IF(F46<=#REF!,#REF!,#REF!))","v":{"$error":"#REF!"}},{"$f":"IF(F46>#REF!,\"\",PMT(#REF!/12,#REF!,-#REF!))","v":{"$error":"#REF!"}},null,null,null,null,39,{"$f":"IF(N46>#REF!,\"\",$L$7)","v":{"$error":"#REF!"}},{"$f":"IF(N46>=#REF!,\"\",IF(N46<=#REF!,#REF!,#REF!))","v":{"$error":"#REF!"}},{"$f":"IF(N46>#REF!,\"\",#REF!)","v":{"$error":"#REF!"}},null,null,null,null,39,{"$f":"IF(V46>#REF!,\"\",$T$7)","v":{"$error":"#REF!"}},{"$f":"IF(V46>=#REF!,\"\",IF(V46<=#REF!,#REF!,#REF!))","v":{"$error":"#REF!"}},{"$f":"IF(V46>#REF!,\"\",#REF!)","v":{"$error":"#REF!"}},null,null,null,null,null,null,null,39]
[40,{"$f":"IF(A47>=#REF!,\"\",IF(A47<=#REF!,#REF!,#REF!))","v":{"$error":"#REF!"}},{"$f":"IF(A47>=#REF!,\"\",IF(A47<=#REF!,#REF!,#REF!))","v":{"$error":"#REF!"}},{"$f":"IF(A47>#REF!,\"\",#REF!)","v":{"$error":"#REF!"}},null,40,{"$f":"IF(F47>=#REF!,\"\",IF(F47<=#REF!,#REF!,#REF!))","v":{"$error":"#REF!"}},{"$f":"IF(F47>=#REF!,\"\",IF(F47<=#REF!,#REF!,#REF!))","v":{"$error":"#REF!"}},{"$f":"IF(F47>#REF!,\"\",PMT(#REF!/12,#REF!,-#REF!))","v":{"$error":"#REF!"}},null,null,null,null,40,{"$f":"IF(N47>#REF!,\"\",$L$7)","v":{"$error":"#REF!"}},{"$f":"IF(N47>=#REF!,\"\",IF(N47<=#REF!,#REF!,#REF!))","v":{"$error":"#REF!"}},{"$f":"IF(N47>#REF!,\"\",#REF!)","v":{"$error":"#REF!"}},null,null,null,null,40,{"$f":"IF(V47>#REF!,\"\",$T$7)","v":{"$error":"#REF!"}},{"$f":"IF(V47>=#REF!,\"\",IF(V47<=#REF!,#REF!,#REF!))","v":{"$error":"#REF!"}},{"$f":"IF(V47>#REF!,\"\",#REF!)","v":{"$error":"#REF!"}},null,null,null,null,null,null,null,40]
[41,{"$f":"IF(A48>=#REF!,\"\",IF(A48<=#REF!,#REF!,#REF!))","v":{"$error":"#REF!"}},{"$f":"IF(A48>=#REF!,\"\",IF(A48<=#REF!,#REF!,#REF!))","v":{"$error":"#REF!"}},{"$f":"IF(A48>#REF!,\"\",#REF!)","v":{"$error":"#REF!"}},null,41,{"$f":"IF(F48>=#REF!,\"\",IF(F48<=#REF!,#REF!,#REF!))","v":{"$error":"#REF!"}},{"$f":"IF(F48>=#REF!,\"\",IF(F48<=#REF!,#REF!,#REF!))","v":{"$error":"#REF!"}},{"$f":"IF(F48>#REF!,\"\",PMT(#REF!/12,#REF!,-#REF!))","v":{"$error":"#REF!"}},null,null,null,null,41,{"$f":"IF(N48>#REF!,\"\",$L$7)","v":{"$error":"#REF!"}},{"$f":"IF(N48>=#REF!,\"\",IF(N48<=#REF!,#REF!,#REF!))","v":{"$error":"#REF!"}},{"$f":"IF(N48>#REF!,\"\",#REF!)","v":{"$error":"#REF!"}},null,null,null,null,41,{"$f":"IF(V48>#REF!,\"\",$T$7)","v":{"$error":"#REF!"}},{"$f":"IF(V48>=#REF!,\"\",IF(V48<=#REF!,#REF!,#REF!))","v":{"$error":"#REF!"}},{"$f":"IF(V48>#REF!,\"\",#REF!)","v":{"$error":"#REF!"}},null,null,null,null,null,null,null,41]
[42,{"$f":"IF(A49>=#REF!,\"\",IF(A49<=#REF!,#REF!,#REF!))","v":{"$error":"#REF!"}},{"$f":"IF(A49>=#REF!,\"\",IF(A49<=#REF!,#REF!,#REF!))","v":{"$error":"#REF!"}},{"$f":"IF(A49>#REF!,\"\",#REF!)","v":{"$error":"#REF!"}},null,42,{"$f":"IF(F49>=#REF!,\"\",IF(F49<=#REF!,#REF!,#REF!))","v":{"$error":"#REF!"}},{"$f":"IF(F49>=#REF!,\"\",IF(F49<=#REF!,#REF!,#REF!))","v":{"$error":"#REF!"}},{"$f":"IF(F49>#REF!,\"\",PMT(#REF!/12,#REF!,-#REF!))","v":{"$error":"#REF!"}},null,null,null,null,42,{"$f":"IF(N49>#REF!,\"\",$L$7)","v":{"$error":"#REF!"}},{"$f":"IF(N49>=#REF!,\"\",IF(N49<=#REF!,#REF!,#REF!))","v":{"$error":"#REF!"}},{"$f":"IF(N49>#REF!,\"\",#REF!)","v":{"$error":"#REF!"}},null,null,null,null,42,{"$f":"IF(V49>#REF!,\"\",$T$7)","v":{"$error":"#REF!"}},{"$f":"IF(V49>=#REF!,\"\",IF(V49<=#REF!,#REF!,#REF!))","v":{"$error":"#REF!"}},{"$f":"IF(V49>#REF!,\"\",#REF!)","v":{"$error":"#REF!"}},null,null,null,null,null,null,null,42]
[43,{"$f":"IF(A50>=#REF!,\"\",IF(A50<=#REF!,#REF!,#REF!))","v":{"$error":"#REF!"}},{"$f":"IF(A50>=#REF!,\"\",IF(A50<=#REF!,#REF!,#REF!))","v":{"$error":"#REF!"}},{"$f":"IF(A50>#REF!,\"\",#REF!)","v":{"$error":"#REF!"}},null,43,{"$f":"IF(F50>=#REF!,\"\",IF(F50<=#REF!,#REF!,#REF!))","v":{"$error":"#REF!"}},{"$f":"IF(F50>=#REF!,\"\",IF(F50<=#REF!,#REF!,#REF!))","v":{"$error":"#REF!"}},{"$f":"IF(F50>#REF!,\"\",PMT(#REF!/12,#REF!,-#REF!))","v":{"$error":"#REF!"}},null,null,null,null,43,{"$f":"IF(N50>#REF!,\"\",$L$7)","v":{"$error":"#REF!"}},{"$f":"IF(N50>=#REF!,\"\",IF(N50<=#REF!,#REF!,#REF!))","v":{"$error":"#REF!"}},{"$f":"IF(N50>#REF!,\"\",#REF!)","v":{"$error":"#REF!"}},null,null,null,null,43,{"$f":"IF(V50>#REF!,\"\",$T$7)","v":{"$error":"#REF!"}},{"$f":"IF(V50>=#REF!,\"\",IF(V50<=#REF!,#REF!,#REF!))","v":{"$error":"#REF!"}},{"$f":"IF(V50>#REF!,\"\",#REF!)","v":{"$error":"#REF!"}},null,null,null,null,null,null,null,43]
[44,{"$f":"IF(A51>=#REF!,\"\",IF(A51<=#REF!,#REF!,#REF!))","v":{"$error":"#REF!"}},{"$f":"IF(A51>=#REF!,\"\",IF(A51<=#REF!,#REF!,#REF!))","v":{"$error":"#REF!"}},{"$f":"IF(A51>#REF!,\"\",#REF!)","v":{"$error":"#REF!"}},null,44,{"$f":"IF(F51>=#REF!,\"\",IF(F51<=#REF!,#REF!,#REF!))","v":{"$error":"#REF!"}},{"$f":"IF(F51>=#REF!,\"\",IF(F51<=#REF!,#REF!,#REF!))","v":{"$error":"#REF!"}},{"$f":"IF(F51>#REF!,\"\",PMT(#REF!/12,#REF!,-#REF!))","v":{"$error":"#REF!"}},null,null,null,null,44,{"$f":"IF(N51>#REF!,\"\",$L$7)","v":{"$error":"#REF!"}},{"$f":"IF(N51>=#REF!,\"\",IF(N51<=#REF!,#REF!,#REF!))","v":{"$error":"#REF!"}},{"$f":"IF(N51>#REF!,\"\",#REF!)","v":{"$error":"#REF!"}},null,null,null,null,44,{"$f":"IF(V51>#REF!,\"\",$T$7)","v":{"$error":"#REF!"}},{"$f":"IF(V51>=#REF!,\"\",IF(V51<=#REF!,#REF!,#REF!))","v":{"$error":"#REF!"}},{"$f":"IF(V51>#REF!,\"\",#REF!)","v":{"$error":"#REF!"}},null,null,null,null,null,null,null,44]
[45,{"$f":"IF(A52>=#REF!,\"\",IF(A52<=#REF!,#REF!,#REF!))","v":{"$error":"#REF!"}},{"$f":"IF(A52>=#REF!,\"\",IF(A52<=#REF!,#REF!,#REF!))","v":{"$error":"#REF!"}},{"$f":"IF(A52>#REF!,\"\",#REF!)","v":{"$error":"#REF!"}},null,45,{"$f":"IF(F52>=#REF!,\"\",IF(F52<=#REF!,#REF!,#REF!))","v":{"$error":"#REF!"}},{"$f":"IF(F52>=#REF!,\"\",IF(F52<=#REF!,#REF!,#REF!))","v":{"$error":"#REF!"}},{"$f":"IF(F52>#REF!,\"\",PMT(#REF!/12,#REF!,-#REF!))","v":{"$error":"#REF!"}},null,null,null,null,45,{"$f":"IF(N52>#REF!,\"\",$L$7)","v":{"$error":"#REF!"}},{"$f":"IF(N52>=#REF!,\"\",IF(N52<=#REF!,#REF!,#REF!))","v":{"$error":"#REF!"}},{"$f":"IF(N52>#REF!,\"\",#REF!)","v":{"$error":"#REF!"}},null,null,null,null,45,{"$f":"IF(V52>#REF!,\"\",$T$7)","v":{"$error":"#REF!"}},{"$f":"IF(V52>=#REF!,\"\",IF(V52<=#REF!,#REF!,#REF!))","v":{"$error":"#REF!"}},{"$f":"IF(V52>#REF!,\"\",#REF!)","v":{"$error":"#REF!"}},null,null,null,null,null,null,null,45]
[46,{"$f":"IF(A53>=#REF!,\"\",IF(A53<=#REF!,#REF!,#REF!))","v":{"$error":"#REF!"}},{"$f":"IF(A53>=#REF!,\"\",IF(A53<=#REF!,#REF!,#REF!))","v":{"$error":"#REF!"}},{"$f":"IF(A53>#REF!,\"\",#REF!)","v":{"$error":"#REF!"}},null,46,{"$f":"IF(F53>=#REF!,\"\",IF(F53<=#REF!,#REF!,#REF!))","v":{"$error":"#REF!"}},{"$f":"IF(F53>=#REF!,\"\",IF(F53<=#REF!,#REF!,#REF!))","v":{"$error":"#REF!"}},{"$f":"IF(F53>#REF!,\"\",PMT(#REF!/12,#REF!,-#REF!))","v":{"$error":"#REF!"}},null,null,null,null,46,{"$f":"IF(N53>#REF!,\"\",$L$7)","v":{"$error":"#REF!"}},{"$f":"IF(N53>=#REF!,\"\",IF(N53<=#REF!,#REF!,#REF!))","v":{"$error":"#REF!"}},{"$f":"IF(N53>#REF!,\"\",#REF!)","v":{"$error":"#REF!"}},null,null,null,null,46,{"$f":"IF(V53>#REF!,\"\",$T$7)","v":{"$error":"#REF!"}},{"$f":"IF(V53>=#REF!,\"\",IF(V53<=#REF!,#REF!,#REF!))","v":{"$error":"#REF!"}},{"$f":"IF(V53>#REF!,\"\",#REF!)","v":{"$error":"#REF!"}},null,null,null,null,null,null,null,46]
[47,{"$f":"IF(A54>=#REF!,\"\",IF(A54<=#REF!,#REF!,#REF!))","v":{"$error":"#REF!"}},{"$f":"IF(A54>=#REF!,\"\",IF(A54<=#REF!,#REF!,#REF!))","v":{"$error":"#REF!"}},{"$f":"IF(A54>#REF!,\"\",#REF!)","v":{"$error":"#REF!"}},null,47,{"$f":"IF(F54>=#REF!,\"\",IF(F54<=#REF!,#REF!,#REF!))","v":{"$error":"#REF!"}},{"$f":"IF(F54>=#REF!,\"\",IF(F54<=#REF!,#REF!,#REF!))","v":{"$error":"#REF!"}},{"$f":"IF(F54>#REF!,\"\",PMT(#REF!/12,#REF!,-#REF!))","v":{"$error":"#REF!"}},null,null,null,null,47,{"$f":"IF(N54>#REF!,\"\",$L$7)","v":{"$error":"#REF!"}},{"$f":"IF(N54>=#REF!,\"\",IF(N54<=#REF!,#REF!,#REF!))","v":{"$error":"#REF!"}},{"$f":"IF(N54>#REF!,\"\",#REF!)","v":{"$error":"#REF!"}},null,null,null,null,47,{"$f":"IF(V54>#REF!,\"\",$T$7)","v":{"$error":"#REF!"}},{"$f":"IF(V54>=#REF!,\"\",IF(V54<=#REF!,#REF!,#REF!))","v":{"$error":"#REF!"}},{"$f":"IF(V54>#REF!,\"\",#REF!)","v":{"$error":"#REF!"}},null,null,null,null,null,null,null,47]
[48,{"$f":"IF(A55>=#REF!,\"\",IF(A55<=#REF!,#REF!,#REF!))","v":{"$error":"#REF!"}},{"$f":"IF(A55>=#REF!,\"\",IF(A55<=#REF!,#REF!,#REF!))","v":{"$error":"#REF!"}},{"$f":"IF(A55>#REF!,\"\",#REF!)","v":{"$error":"#REF!"}},null,48,{"$f":"IF(F55>=#REF!,\"\",IF(F55<=#REF!,#REF!,#REF!))","v":{"$error":"#REF!"}},{"$f":"IF(F55>=#REF!,\"\",IF(F55<=#REF!,#REF!,#REF!))","v":{"$error":"#REF!"}},{"$f":"IF(F55>#REF!,\"\",PMT(#REF!/12,#REF!,-#REF!))","v":{"$error":"#REF!"}},null,null,null,null,48,{"$f":"IF(N55>#REF!,\"\",$L$7)","v":{"$error":"#REF!"}},{"$f":"IF(N55>=#REF!,\"\",IF(N55<=#REF!,#REF!,#REF!))","v":{"$error":"#REF!"}},{"$f":"IF(N55>#REF!,\"\",#REF!)","v":{"$error":"#REF!"}},null,null,null,null,48,{"$f":"IF(V55>#REF!,\"\",$T$7)","v":{"$error":"#REF!"}},{"$f":"IF(V55>=#REF!,\"\",IF(V55<=#REF!,#REF!,#REF!))","v":{"$error":"#REF!"}},{"$f":"IF(V55>#REF!,\"\",#REF!)","v":{"$error":"#REF!"}},null,null,null,null,null,null,null,48]
[49,{"$f":"IF(A56>=#REF!,\"\",IF(A56<=#REF!,#REF!,#REF!))","v":{"$error":"#REF!"}},{"$f":"IF(A56>=#REF!,\"\",IF(A56<=#REF!,#REF!,#REF!))","v":{"$error":"#REF!"}},{"$f":"IF(A56>#REF!,\"\",#REF!)","v":{"$error":"#REF!"}},null,49,{"$f":"IF(F56>=#REF!,\"\",IF(F56<=#REF!,#REF!,#REF!))","v":{"$error":"#REF!"}},{"$f":"IF(F56>=#REF!,\"\",IF(F56<=#REF!,#REF!,#REF!))","v":{"$error":"#REF!"}},{"$f":"IF(F56>#REF!,\"\",PMT(#REF!/12,#REF!,-#REF!))","v":{"$error":"#REF!"}},null,null,null,null,49,{"$f":"IF(N56>#REF!,\"\",$L$7)","v":{"$error":"#REF!"}},{"$f":"IF(N56>=#REF!,\"\",IF(N56<=#REF!,#REF!,#REF!))","v":{"$error":"#REF!"}},{"$f":"IF(N56>#REF!,\"\",#REF!)","v":{"$error":"#REF!"}},null,null,null,null,49,{"$f":"IF(V56>#REF!,\"\",$T$7)","v":{"$error":"#REF!"}},{"$f":"IF(V56>=#REF!,\"\",IF(V56<=#REF!,#REF!,#REF!))","v":{"$error":"#REF!"}},{"$f":"IF(V56>#REF!,\"\",#REF!)","v":{"$error":"#REF!"}},null,null,null,null,null,null,null,49]
[50,{"$f":"IF(A57>=#REF!,\"\",IF(A57<=#REF!,#REF!,#REF!))","v":{"$error":"#REF!"}},{"$f":"IF(A57>=#REF!,\"\",IF(A57<=#REF!,#REF!,#REF!))","v":{"$error":"#REF!"}},{"$f":"IF(A57>#REF!,\"\",#REF!)","v":{"$error":"#REF!"}},null,50,{"$f":"IF(F57>=#REF!,\"\",IF(F57<=#REF!,#REF!,#REF!))","v":{"$error":"#REF!"}},{"$f":"IF(F57>=#REF!,\"\",IF(F57<=#REF!,#REF!,#REF!))","v":{"$error":"#REF!"}},{"$f":"IF(F57>#REF!,\"\",PMT(#REF!/12,#REF!,-#REF!))","v":{"$error":"#REF!"}},null,null,null,null,50,{"$f":"IF(N57>#REF!,\"\",$L$7)","v":{"$error":"#REF!"}},{"$f":"IF(N57>=#REF!,\"\",IF(N57<=#REF!,#REF!,#REF!))","v":{"$error":"#REF!"}},{"$f":"IF(N57>#REF!,\"\",#REF!)","v":{"$error":"#REF!"}},null,null,null,null,50,{"$f":"IF(V57>#REF!,\"\",$T$7)","v":{"$error":"#REF!"}},{"$f":"IF(V57>=#REF!,\"\",IF(V57<=#REF!,#REF!,#REF!))","v":{"$error":"#REF!"}},{"$f":"IF(V57>#REF!,\"\",#REF!)","v":{"$error":"#REF!"}},null,null,null,null,null,null,null,50]
[51,{"$f":"IF(A58>=#REF!,\"\",IF(A58<=#REF!,#REF!,#REF!))","v":{"$error":"#REF!"}},{"$f":"IF(A58>=#REF!,\"\",IF(A58<=#REF!,#REF!,#REF!))","v":{"$error":"#REF!"}},{"$f":"IF(A58>#REF!,\"\",#REF!)","v":{"$error":"#REF!"}},null,51,{"$f":"IF(F58>=#REF!,\"\",IF(F58<=#REF!,#REF!,#REF!))","v":{"$error":"#REF!"}},{"$f":"IF(F58>=#REF!,\"\",IF(F58<=#REF!,#REF!,#REF!))","v":{"$error":"#REF!"}},{"$f":"IF(F58>#REF!,\"\",PMT(#REF!/12,#REF!,-#REF!))","v":{"$error":"#REF!"}},null,null,null,null,51,{"$f":"IF(N58>#REF!,\"\",$L$7)","v":{"$error":"#REF!"}},{"$f":"IF(N58>=#REF!,\"\",IF(N58<=#REF!,#REF!,#REF!))","v":{"$error":"#REF!"}},{"$f":"IF(N58>#REF!,\"\",#REF!)","v":{"$error":"#REF!"}},null,null,null,null,51,{"$f":"IF(V58>#REF!,\"\",$T$7)","v":{"$error":"#REF!"}},{"$f":"IF(V58>=#REF!,\"\",IF(V58<=#REF!,#REF!,#REF!))","v":{"$error":"#REF!"}},{"$f":"IF(V58>#REF!,\"\",#REF!)","v":{"$error":"#REF!"}},null,null,null,null,null,null,null,51]
[52,{"$f":"IF(A59>=#REF!,\"\",IF(A59<=#REF!,#REF!,#REF!))","v":{"$error":"#REF!"}},{"$f":"IF(A59>=#REF!,\"\",IF(A59<=#REF!,#REF!,#REF!))","v":{"$error":"#REF!"}},{"$f":"IF(A59>#REF!,\"\",#REF!)","v":{"$error":"#REF!"}},null,52,{"$f":"IF(F59>=#REF!,\"\",IF(F59<=#REF!,#REF!,#REF!))","v":{"$error":"#REF!"}},{"$f":"IF(F59>=#REF!,\"\",IF(F59<=#REF!,#REF!,#REF!))","v":{"$error":"#REF!"}},{"$f":"IF(F59>#REF!,\"\",PMT(#REF!/12,#REF!,-#REF!))","v":{"$error":"#REF!"}},null,null,null,null,52,{"$f":"IF(N59>#REF!,\"\",$L$7)","v":{"$error":"#REF!"}},{"$f":"IF(N59>=#REF!,\"\",IF(N59<=#REF!,#REF!,#REF!))","v":{"$error":"#REF!"}},{"$f":"IF(N59>#REF!,\"\",#REF!)","v":{"$error":"#REF!"}},null,null,null,null,52,{"$f":"IF(V59>#REF!,\"\",$T$7)","v":{"$error":"#REF!"}},{"$f":"IF(V59>=#REF!,\"\",IF(V59<=#REF!,#REF!,#REF!))","v":{"$error":"#REF!"}},{"$f":"IF(V59>#REF!,\"\",#REF!)","v":{"$error":"#REF!"}},null,null,null,null,null,null,null,52]
[53,{"$f":"IF(A60>=#REF!,\"\",IF(A60<=#REF!,#REF!,#REF!))","v":{"$error":"#REF!"}},{"$f":"IF(A60>=#REF!,\"\",IF(A60<=#REF!,#REF!,#REF!))","v":{"$error":"#REF!"}},{"$f":"IF(A60>#REF!,\"\",#REF!)","v":{"$error":"#REF!"}},null,53,{"$f":"IF(F60>=#REF!,\"\",IF(F60<=#REF!,#REF!,#REF!))","v":{"$error":"#REF!"}},{"$f":"IF(F60>=#REF!,\"\",IF(F60<=#REF!,#REF!,#REF!))","v":{"$error":"#REF!"}},{"$f":"IF(F60>#REF!,\"\",PMT(#REF!/12,#REF!,-#REF!))","v":{"$error":"#REF!"}},null,null,null,null,53,{"$f":"IF(N60>#REF!,\"\",$L$7)","v":{"$error":"#REF!"}},{"$f":"IF(N60>=#REF!,\"\",IF(N60<=#REF!,#REF!,#REF!))","v":{"$error":"#REF!"}},{"$f":"IF(N60>#REF!,\"\",#REF!)","v":{"$error":"#REF!"}},null,null,null,null,53,{"$f":"IF(V60>#REF!,\"\",$T$7)","v":{"$error":"#REF!"}},{"$f":"IF(V60>=#REF!,\"\",IF(V60<=#REF!,#REF!,#REF!))","v":{"$error":"#REF!"}},{"$f":"IF(V60>#REF!,\"\",#REF!)","v":{"$error":"#REF!"}},null,null,null,null,null,null,null,53]
[54,{"$f":"IF(A61>=#REF!,\"\",IF(A61<=#REF!,#REF!,#REF!))","v":{"$error":"#REF!"}},{"$f":"IF(A61>=#REF!,\"\",IF(A61<=#REF!,#REF!,#REF!))","v":{"$error":"#REF!"}},{"$f":"IF(A61>#REF!,\"\",#REF!)","v":{"$error":"#REF!"}},null,54,{"$f":"IF(F61>=#REF!,\"\",IF(F61<=#REF!,#REF!,#REF!))","v":{"$error":"#REF!"}},{"$f":"IF(F61>=#REF!,\"\",IF(F61<=#REF!,#REF!,#REF!))","v":{"$error":"#REF!"}},{"$f":"IF(F61>#REF!,\"\",PMT(#REF!/12,#REF!,-#REF!))","v":{"$error":"#REF!"}},null,null,null,null,54,{"$f":"IF(N61>#REF!,\"\",$L$7)","v":{"$error":"#REF!"}},{"$f":"IF(N61>=#REF!,\"\",IF(N61<=#REF!,#REF!,#REF!))","v":{"$error":"#REF!"}},{"$f":"IF(N61>#REF!,\"\",#REF!)","v":{"$error":"#REF!"}},null,null,null,null,54,{"$f":"IF(V61>#REF!,\"\",$T$7)","v":{"$error":"#REF!"}},{"$f":"IF(V61>=#REF!,\"\",IF(V61<=#REF!,#REF!,#REF!))","v":{"$error":"#REF!"}},{"$f":"IF(V61>#REF!,\"\",#REF!)","v":{"$error":"#REF!"}},null,null,null,null,null,null,null,54]
[55,{"$f":"IF(A62>=#REF!,\"\",IF(A62<=#REF!,#REF!,#REF!))","v":{"$error":"#REF!"}},{"$f":"IF(A62>=#REF!,\"\",IF(A62<=#REF!,#REF!,#REF!))","v":{"$error":"#REF!"}},{"$f":"IF(A62>#REF!,\"\",#REF!)","v":{"$error":"#REF!"}},null,55,{"$f":"IF(F62>=#REF!,\"\",IF(F62<=#REF!,#REF!,#REF!))","v":{"$error":"#REF!"}},{"$f":"IF(F62>=#REF!,\"\",IF(F62<=#REF!,#REF!,#REF!))","v":{"$error":"#REF!"}},{"$f":"IF(F62>#REF!,\"\",PMT(#REF!/12,#REF!,-#REF!))","v":{"$error":"#REF!"}},null,null,null,null,55,{"$f":"IF(N62>#REF!,\"\",$L$7)","v":{"$error":"#REF!"}},{"$f":"IF(N62>=#REF!,\"\",IF(N62<=#REF!,#REF!,#REF!))","v":{"$error":"#REF!"}},{"$f":"IF(N62>#REF!,\"\",#REF!)","v":{"$error":"#REF!"}},null,null,null,null,55,{"$f":"IF(V62>#REF!,\"\",$T$7)","v":{"$error":"#REF!"}},{"$f":"IF(V62>=#REF!,\"\",IF(V62<=#REF!,#REF!,#REF!))","v":{"$error":"#REF!"}},{"$f":"IF(V62>#REF!,\"\",#REF!)","v":{"$error":"#REF!"}},null,null,null,null,null,null,null,55]
[56,{"$f":"IF(A63>=#REF!,\"\",IF(A63<=#REF!,#REF!,#REF!))","v":{"$error":"#REF!"}},{"$f":"IF(A63>=#REF!,\"\",IF(A63<=#REF!,#REF!,#REF!))","v":{"$error":"#REF!"}},{"$f":"IF(A63>#REF!,\"\",#REF!)","v":{"$error":"#REF!"}},null,56,{"$f":"IF(F63>=#REF!,\"\",IF(F63<=#REF!,#REF!,#REF!))","v":{"$error":"#REF!"}},{"$f":"IF(F63>=#REF!,\"\",IF(F63<=#REF!,#REF!,#REF!))","v":{"$error":"#REF!"}},{"$f":"IF(F63>#REF!,\"\",PMT(#REF!/12,#REF!,-#REF!))","v":{"$error":"#REF!"}},null,null,null,null,56,{"$f":"IF(N63>#REF!,\"\",$L$7)","v":{"$error":"#REF!"}},{"$f":"IF(N63>=#REF!,\"\",IF(N63<=#REF!,#REF!,#REF!))","v":{"$error":"#REF!"}},{"$f":"IF(N63>#REF!,\"\",#REF!)","v":{"$error":"#REF!"}},null,null,null,null,56,{"$f":"IF(V63>#REF!,\"\",$T$7)","v":{"$error":"#REF!"}},{"$f":"IF(V63>=#REF!,\"\",IF(V63<=#REF!,#REF!,#REF!))","v":{"$error":"#REF!"}},{"$f":"IF(V63>#REF!,\"\",#REF!)","v":{"$error":"#REF!"}},null,null,null,null,null,null,null,56]
[57,{"$f":"IF(A64>=#REF!,\"\",IF(A64<=#REF!,#REF!,#REF!))","v":{"$error":"#REF!"}},{"$f":"IF(A64>=#REF!,\"\",IF(A64<=#REF!,#REF!,#REF!))","v":{"$error":"#REF!"}},{"$f":"IF(A64>#REF!,\"\",#REF!)","v":{"$error":"#REF!"}},null,57,{"$f":"IF(F64>=#REF!,\"\",IF(F64<=#REF!,#REF!,#REF!))","v":{"$error":"#REF!"}},{"$f":"IF(F64>=#REF!,\"\",IF(F64<=#REF!,#REF!,#REF!))","v":{"$error":"#REF!"}},{"$f":"IF(F64>#REF!,\"\",PMT(#REF!/12,#REF!,-#REF!))","v":{"$error":"#REF!"}},null,null,null,null,57,{"$f":"IF(N64>#REF!,\"\",$L$7)","v":{"$error":"#REF!"}},{"$f":"IF(N64>=#REF!,\"\",IF(N64<=#REF!,#REF!,#REF!))","v":{"$error":"#REF!"}},{"$f":"IF(N64>#REF!,\"\",#REF!)","v":{"$error":"#REF!"}},null,null,null,null,57,{"$f":"IF(V64>#REF!,\"\",$T$7)","v":{"$error":"#REF!"}},{"$f":"IF(V64>=#REF!,\"\",IF(V64<=#REF!,#REF!,#REF!))","v":{"$error":"#REF!"}},{"$f":"IF(V64>#REF!,\"\",#REF!)","v":{"$error":"#REF!"}},null,null,null,null,null,null,null,57]
[58,{"$f":"IF(A65>=#REF!,\"\",IF(A65<=#REF!,#REF!,#REF!))","v":{"$error":"#REF!"}},{"$f":"IF(A65>=#REF!,\"\",IF(A65<=#REF!,#REF!,#REF!))","v":{"$error":"#REF!"}},{"$f":"IF(A65>#REF!,\"\",#REF!)","v":{"$error":"#REF!"}},null,58,{"$f":"IF(F65>=#REF!,\"\",IF(F65<=#REF!,#REF!,#REF!))","v":{"$error":"#REF!"}},{"$f":"IF(F65>=#REF!,\"\",IF(F65<=#REF!,#REF!,#REF!))","v":{"$error":"#REF!"}},{"$f":"IF(F65>#REF!,\"\",PMT(#REF!/12,#REF!,-#REF!))","v":{"$error":"#REF!"}},null,null,null,null,58,{"$f":"IF(N65>#REF!,\"\",$L$7)","v":{"$error":"#REF!"}},{"$f":"IF(N65>=#REF!,\"\",IF(N65<=#REF!,#REF!,#REF!))","v":{"$error":"#REF!"}},{"$f":"IF(N65>#REF!,\"\",#REF!)","v":{"$error":"#REF!"}},null,null,null,null,58,{"$f":"IF(V65>#REF!,\"\",$T$7)","v":{"$error":"#REF!"}},{"$f":"IF(V65>=#REF!,\"\",IF(V65<=#REF!,#REF!,#REF!))","v":{"$error":"#REF!"}},{"$f":"IF(V65>#REF!,\"\",#REF!)","v":{"$error":"#REF!"}},null,null,null,null,null,null,null,58]
[59,{"$f":"IF(A66>=#REF!,\"\",IF(A66<=#REF!,#REF!,#REF!))","v":{"$error":"#REF!"}},{"$f":"IF(A66>=#REF!,\"\",IF(A66<=#REF!,#REF!,#REF!))","v":{"$error":"#REF!"}},{"$f":"IF(A66>#REF!,\"\",#REF!)","v":{"$error":"#REF!"}},null,59,{"$f":"IF(F66>=#REF!,\"\",IF(F66<=#REF!,#REF!,#REF!))","v":{"$error":"#REF!"}},{"$f":"IF(F66>=#REF!,\"\",IF(F66<=#REF!,#REF!,#REF!))","v":{"$error":"#REF!"}},{"$f":"IF(F66>#REF!,\"\",PMT(#REF!/12,#REF!,-#REF!))","v":{"$error":"#REF!"}},null,null,null,null,59,{"$f":"IF(N66>#REF!,\"\",$L$7)","v":{"$error":"#REF!"}},{"$f":"IF(N66>=#REF!,\"\",IF(N66<=#REF!,#REF!,#REF!))","v":{"$error":"#REF!"}},{"$f":"IF(N66>#REF!,\"\",#REF!)","v":{"$error":"#REF!"}},null,null,null,null,59,{"$f":"IF(V66>#REF!,\"\",$T$7)","v":{"$error":"#REF!"}},{"$f":"IF(V66>=#REF!,\"\",IF(V66<=#REF!,#REF!,#REF!))","v":{"$error":"#REF!"}},{"$f":"IF(V66>#REF!,\"\",#REF!)","v":{"$error":"#REF!"}},null,null,null,null,null,null,null,59]
[60,{"$f":"IF(A67>=#REF!,\"\",IF(A67<=#REF!,#REF!,#REF!))","v":{"$error":"#REF!"}},{"$f":"IF(A67>=#REF!,\"\",IF(A67<=#REF!,#REF!,#REF!))","v":{"$error":"#REF!"}},{"$f":"IF(A67>#REF!,\"\",#REF!)","v":{"$error":"#REF!"}},null,60,{"$f":"IF(F67>=#REF!,\"\",IF(F67<=#REF!,#REF!,#REF!))","v":{"$error":"#REF!"}},{"$f":"IF(F67>=#REF!,\"\",IF(F67<=#REF!,#REF!,#REF!))","v":{"$error":"#REF!"}},{"$f":"IF(F67>#REF!,\"\",PMT(#REF!/12,#REF!,-#REF!))","v":{"$error":"#REF!"}},null,null,null,null,60,{"$f":"IF(N67>#REF!,\"\",$L$7)","v":{"$error":"#REF!"}},{"$f":"IF(N67>=#REF!,\"\",IF(N67<=#REF!,#REF!,#REF!))","v":{"$error":"#REF!"}},{"$f":"IF(N67>#REF!,\"\",#REF!)","v":{"$error":"#REF!"}},null,null,null,null,60,{"$f":"IF(V67>#REF!,\"\",$T$7)","v":{"$error":"#REF!"}},{"$f":"IF(V67>=#REF!,\"\",IF(V67<=#REF!,#REF!,#REF!))","v":{"$error":"#REF!"}},{"$f":"IF(V67>#REF!,\"\",#REF!)","v":{"$error":"#REF!"}},null,null,null,null,null,null,null,60]
[61,{"$f":"IF(A68>=#REF!,\"\",IF(A68<=#REF!,#REF!,#REF!))","v":{"$error":"#REF!"}},{"$f":"IF(A68>=#REF!,\"\",IF(A68<=#REF!,#REF!,#REF!))","v":{"$error":"#REF!"}},{"$f":"IF(A68>#REF!,\"\",#REF!)","v":{"$error":"#REF!"}},null,61,{"$f":"IF(F68>=#REF!,\"\",IF(F68<=#REF!,#REF!,#REF!))","v":{"$error":"#REF!"}},{"$f":"IF(F68>=#REF!,\"\",IF(F68<=#REF!,#REF!,#REF!))","v":{"$error":"#REF!"}},{"$f":"IF(F68>#REF!,\"\",PMT(#REF!/12,#REF!,-#REF!))","v":{"$error":"#REF!"}},null,null,null,null,61,{"$f":"IF(N68>#REF!,\"\",$L$7)","v":{"$error":"#REF!"}},{"$f":"IF(N68>=#REF!,\"\",IF(N68<=#REF!,#REF!,#REF!))","v":{"$error":"#REF!"}},{"$f":"IF(N68>#REF!,\"\",#REF!)","v":{"$error":"#REF!"}},null,null,null,null,61,{"$f":"IF(V68>#REF!,\"\",$T$7)","v":{"$error":"#REF!"}},{"$f":"IF(V68>=#REF!,\"\",IF(V68<=#REF!,#REF!,#REF!))","v":{"$error":"#REF!"}},{"$f":"IF(V68>#REF!,\"\",#REF!)","v":{"$error":"#REF!"}},null,null,null,null,null,null,null,61]
[62,{"$f":"IF(A69>=#REF!,\"\",IF(A69<=#REF!,#REF!,#REF!))","v":{"$error":"#REF!"}},{"$f":"IF(A69>=#REF!,\"\",IF(A69<=#REF!,#REF!,#REF!))","v":{"$error":"#REF!"}},{"$f":"IF(A69>#REF!,\"\",#REF!)","v":{"$error":"#REF!"}},null,62,{"$f":"IF(F69>=#REF!,\"\",IF(F69<=#REF!,#REF!,#REF!))","v":{"$error":"#REF!"}},{"$f":"IF(F69>=#REF!,\"\",IF(F69<=#REF!,#REF!,#REF!))","v":{"$error":"#REF!"}},{"$f":"IF(F69>#REF!,\"\",PMT(#REF!/12,#REF!,-#REF!))","v":{"$error":"#REF!"}},null,null,null,null,62,{"$f":"IF(N69>#REF!,\"\",$L$7)","v":{"$error":"#REF!"}},{"$f":"IF(N69>=#REF!,\"\",IF(N69<=#REF!,#REF!,#REF!))","v":{"$error":"#REF!"}},{"$f":"IF(N69>#REF!,\"\",#REF!)","v":{"$error":"#REF!"}},null,null,null,null,62,{"$f":"IF(V69>#REF!,\"\",$T$7)","v":{"$error":"#REF!"}},{"$f":"IF(V69>=#REF!,\"\",IF(V69<=#REF!,#REF!,#REF!))","v":{"$error":"#REF!"}},{"$f":"IF(V69>#REF!,\"\",#REF!)","v":{"$error":"#REF!"}},null,null,null,null,null,null,null,62]
[63,{"$f":"IF(A70>=#REF!,\"\",IF(A70<=#REF!,#REF!,#REF!))","v":{"$error":"#REF!"}},{"$f":"IF(A70>=#REF!,\"\",IF(A70<=#REF!,#REF!,#REF!))","v":{"$error":"#REF!"}},{"$f":"IF(A70>#REF!,\"\",#REF!)","v":{"$error":"#REF!"}},null,63,{"$f":"IF(F70>=#REF!,\"\",IF(F70<=#REF!,#REF!,#REF!))","v":{"$error":"#REF!"}},{"$f":"IF(F70>=#REF!,\"\",IF(F70<=#REF!,#REF!,#REF!))","v":{"$error":"#REF!"}},{"$f":"IF(F70>#REF!,\"\",PMT(#REF!/12,#REF!,-#REF!))","v":{"$error":"#REF!"}},null,null,null,null,63,{"$f":"IF(N70>#REF!,\"\",$L$7)","v":{"$error":"#REF!"}},{"$f":"IF(N70>=#REF!,\"\",IF(N70<=#REF!,#REF!,#REF!))","v":{"$error":"#REF!"}},{"$f":"IF(N70>#REF!,\"\",#REF!)","v":{"$error":"#REF!"}},null,null,null,null,63,{"$f":"IF(V70>#REF!,\"\",$T$7)","v":{"$error":"#REF!"}},{"$f":"IF(V70>=#REF!,\"\",IF(V70<=#REF!,#REF!,#REF!))","v":{"$error":"#REF!"}},{"$f":"IF(V70>#REF!,\"\",#REF!)","v":{"$error":"#REF!"}},null,null,null,null,null,null,null,63]
[64,{"$f":"IF(A71>=#REF!,\"\",IF(A71<=#REF!,#REF!,#REF!))","v":{"$error":"#REF!"}},{"$f":"IF(A71>=#REF!,\"\",IF(A71<=#REF!,#REF!,#REF!))","v":{"$error":"#REF!"}},{"$f":"IF(A71>#REF!,\"\",#REF!)","v":{"$error":"#REF!"}},null,64,{"$f":"IF(F71>=#REF!,\"\",IF(F71<=#REF!,#REF!,#REF!))","v":{"$error":"#REF!"}},{"$f":"IF(F71>=#REF!,\"\",IF(F71<=#REF!,#REF!,#REF!))","v":{"$error":"#REF!"}},{"$f":"IF(F71>#REF!,\"\",PMT(#REF!/12,#REF!,-#REF!))","v":{"$error":"#REF!"}},null,null,null,null,64,{"$f":"IF(N71>#REF!,\"\",$L$7)","v":{"$error":"#REF!"}},{"$f":"IF(N71>=#REF!,\"\",IF(N71<=#REF!,#REF!,#REF!))","v":{"$error":"#REF!"}},{"$f":"IF(N71>#REF!,\"\",#REF!)","v":{"$error":"#REF!"}},null,null,null,null,64,{"$f":"IF(V71>#REF!,\"\",$T$7)","v":{"$error":"#REF!"}},{"$f":"IF(V71>=#REF!,\"\",IF(V71<=#REF!,#REF!,#REF!))","v":{"$error":"#REF!"}},{"$f":"IF(V71>#REF!,\"\",#REF!)","v":{"$error":"#REF!"}},null,null,null,null,null,null,null,64]
[65,{"$f":"IF(A72>=#REF!,\"\",IF(A72<=#REF!,#REF!,#REF!))","v":{"$error":"#REF!"}},{"$f":"IF(A72>=#REF!,\"\",IF(A72<=#REF!,#REF!,#REF!))","v":{"$error":"#REF!"}},{"$f":"IF(A72>#REF!,\"\",#REF!)","v":{"$error":"#REF!"}},null,65,{"$f":"IF(F72>=#REF!,\"\",IF(F72<=#REF!,#REF!,#REF!))","v":{"$error":"#REF!"}},{"$f":"IF(F72>=#REF!,\"\",IF(F72<=#REF!,#REF!,#REF!))","v":{"$error":"#REF!"}},{"$f":"IF(F72>#REF!,\"\",PMT(#REF!/12,#REF!,-#REF!))","v":{"$error":"#REF!"}},null,null,null,null,65,{"$f":"IF(N72>#REF!,\"\",$L$7)","v":{"$error":"#REF!"}},{"$f":"IF(N72>=#REF!,\"\",IF(N72<=#REF!,#REF!,#REF!))","v":{"$error":"#REF!"}},{"$f":"IF(N72>#REF!,\"\",#REF!)","v":{"$error":"#REF!"}},null,null,null,null,65,{"$f":"IF(V72>#REF!,\"\",$T$7)","v":{"$error":"#REF!"}},{"$f":"IF(V72>=#REF!,\"\",IF(V72<=#REF!,#REF!,#REF!))","v":{"$error":"#REF!"}},{"$f":"IF(V72>#REF!,\"\",#REF!)","v":{"$error":"#REF!"}},null,null,null,null,null,null,null,65]
[66,{"$f":"IF(A73>=#REF!,\"\",IF(A73<=#REF!,#REF!,#REF!))","v":{"$error":"#REF!"}},{"$f":"IF(A73>=#REF!,\"\",IF(A73<=#REF!,#REF!,#REF!))","v":{"$error":"#REF!"}},{"$f":"IF(A73>#REF!,\"\",#REF!)","v":{"$error":"#REF!"}},null,66,{"$f":"IF(F73>=#REF!,\"\",IF(F73<=#REF!,#REF!,#REF!))","v":{"$error":"#REF!"}},{"$f":"IF(F73>=#REF!,\"\",IF(F73<=#REF!,#REF!,#REF!))","v":{"$error":"#REF!"}},{"$f":"IF(F73>#REF!,\"\",PMT(#REF!/12,#REF!,-#REF!))","v":{"$error":"#REF!"}},null,null,null,null,66,{"$f":"IF(N73>#REF!,\"\",$L$7)","v":{"$error":"#REF!"}},{"$f":"IF(N73>=#REF!,\"\",IF(N73<=#REF!,#REF!,#REF!))","v":{"$error":"#REF!"}},{"$f":"IF(N73>#REF!,\"\",#REF!)","v":{"$error":"#REF!"}},null,null,null,null,66,{"$f":"IF(V73>#REF!,\"\",$T$7)","v":{"$error":"#REF!"}},{"$f":"IF(V73>=#REF!,\"\",IF(V73<=#REF!,#REF!,#REF!))","v":{"$error":"#REF!"}},{"$f":"IF(V73>#REF!,\"\",#REF!)","v":{"$error":"#REF!"}},null,null,null,null,null,null,null,66]
[67,{"$f":"IF(A74>=#REF!,\"\",IF(A74<=#REF!,#REF!,#REF!))","v":{"$error":"#REF!"}},{"$f":"IF(A74>=#REF!,\"\",IF(A74<=#REF!,#REF!,#REF!))","v":{"$error":"#REF!"}},{"$f":"IF(A74>#REF!,\"\",#REF!)","v":{"$error":"#REF!"}},null,67,{"$f":"IF(F74>=#REF!,\"\",IF(F74<=#REF!,#REF!,#REF!))","v":{"$error":"#REF!"}},{"$f":"IF(F74>=#REF!,\"\",IF(F74<=#REF!,#REF!,#REF!))","v":{"$error":"#REF!"}},{"$f":"IF(F74>#REF!,\"\",PMT(#REF!/12,#REF!,-#REF!))","v":{"$error":"#REF!"}},null,null,null,null,67,{"$f":"IF(N74>#REF!,\"\",$L$7)","v":{"$error":"#REF!"}},{"$f":"IF(N74>=#REF!,\"\",IF(N74<=#REF!,#REF!,#REF!))","v":{"$error":"#REF!"}},{"$f":"IF(N74>#REF!,\"\",#REF!)","v":{"$error":"#REF!"}},null,null,null,null,67,{"$f":"IF(V74>#REF!,\"\",$T$7)","v":{"$error":"#REF!"}},{"$f":"IF(V74>=#REF!,\"\",IF(V74<=#REF!,#REF!,#REF!))","v":{"$error":"#REF!"}},{"$f":"IF(V74>#REF!,\"\",#REF!)","v":{"$error":"#REF!"}},null,null,null,null,null,null,null,67]
[68,{"$f":"IF(A75>=#REF!,\"\",IF(A75<=#REF!,#REF!,#REF!))","v":{"$error":"#REF!"}},{"$f":"IF(A75>=#REF!,\"\",IF(A75<=#REF!,#REF!,#REF!))","v":{"$error":"#REF!"}},{"$f":"IF(A75>#REF!,\"\",#REF!)","v":{"$error":"#REF!"}},null,68,{"$f":"IF(F75>=#REF!,\"\",IF(F75<=#REF!,#REF!,#REF!))","v":{"$error":"#REF!"}},{"$f":"IF(F75>=#REF!,\"\",IF(F75<=#REF!,#REF!,#REF!))","v":{"$error":"#REF!"}},{"$f":"IF(F75>#REF!,\"\",PMT(#REF!/12,#REF!,-#REF!))","v":{"$error":"#REF!"}},null,null,null,null,68,{"$f":"IF(N75>#REF!,\"\",$L$7)","v":{"$error":"#REF!"}},{"$f":"IF(N75>=#REF!,\"\",IF(N75<=#REF!,#REF!,#REF!))","v":{"$error":"#REF!"}},{"$f":"IF(N75>#REF!,\"\",#REF!)","v":{"$error":"#REF!"}},null,null,null,null,68,{"$f":"IF(V75>#REF!,\"\",$T$7)","v":{"$error":"#REF!"}},{"$f":"IF(V75>=#REF!,\"\",IF(V75<=#REF!,#REF!,#REF!))","v":{"$error":"#REF!"}},{"$f":"IF(V75>#REF!,\"\",#REF!)","v":{"$error":"#REF!"}},null,null,null,null,null,null,null,68]
[69,{"$f":"IF(A76>=#REF!,\"\",IF(A76<=#REF!,#REF!,#REF!))","v":{"$error":"#REF!"}},{"$f":"IF(A76>=#REF!,\"\",IF(A76<=#REF!,#REF!,#REF!))","v":{"$error":"#REF!"}},{"$f":"IF(A76>#REF!,\"\",#REF!)","v":{"$error":"#REF!"}},null,69,{"$f":"IF(F76>=#REF!,\"\",IF(F76<=#REF!,#REF!,#REF!))","v":{"$error":"#REF!"}},{"$f":"IF(F76>=#REF!,\"\",IF(F76<=#REF!,#REF!,#REF!))","v":{"$error":"#REF!"}},{"$f":"IF(F76>#REF!,\"\",PMT(#REF!/12,#REF!,-#REF!))","v":{"$error":"#REF!"}},null,null,null,null,69,{"$f":"IF(N76>#REF!,\"\",$L$7)","v":{"$error":"#REF!"}},{"$f":"IF(N76>=#REF!,\"\",IF(N76<=#REF!,#REF!,#REF!))","v":{"$error":"#REF!"}},{"$f":"IF(N76>#REF!,\"\",#REF!)","v":{"$error":"#REF!"}},null,null,null,null,69,{"$f":"IF(V76>#REF!,\"\",$T$7)","v":{"$error":"#REF!"}},{"$f":"IF(V76>=#REF!,\"\",IF(V76<=#REF!,#REF!,#REF!))","v":{"$error":"#REF!"}},{"$f":"IF(V76>#REF!,\"\",#REF!)","v":{"$error":"#REF!"}},null,null,null,null,null,null,null,69]
[70,{"$f":"IF(A77>=#REF!,\"\",IF(A77<=#REF!,#REF!,#REF!))","v":{"$error":"#REF!"}},{"$f":"IF(A77>=#REF!,\"\",IF(A77<=#REF!,#REF!,#REF!))","v":{"$error":"#REF!"}},{"$f":"IF(A77>#REF!,\"\",#REF!)","v":{"$error":"#REF!"}},null,70,{"$f":"IF(F77>=#REF!,\"\",IF(F77<=#REF!,#REF!,#REF!))","v":{"$error":"#REF!"}},{"$f":"IF(F77>=#REF!,\"\",IF(F77<=#REF!,#REF!,#REF!))","v":{"$error":"#REF!"}},{"$f":"IF(F77>#REF!,\"\",PMT(#REF!/12,#REF!,-#REF!))","v":{"$error":"#REF!"}},null,null,null,null,70,{"$f":"IF(N77>#REF!,\"\",$L$7)","v":{"$error":"#REF!"}},{"$f":"IF(N77>=#REF!,\"\",IF(N77<=#REF!,#REF!,#REF!))","v":{"$error":"#REF!"}},{"$f":"IF(N77>#REF!,\"\",#REF!)","v":{"$error":"#REF!"}},null,null,null,null,70,{"$f":"IF(V77>#REF!,\"\",$T$7)","v":{"$error":"#REF!"}},{"$f":"IF(V77>=#REF!,\"\",IF(V77<=#REF!,#REF!,#REF!))","v":{"$error":"#REF!"}},{"$f":"IF(V77>#REF!,\"\",#REF!)","v":{"$error":"#REF!"}},null,null,null,null,null,null,null,70]
[71,{"$f":"IF(A78>=#REF!,\"\",IF(A78<=#REF!,#REF!,#REF!))","v":{"$error":"#REF!"}},{"$f":"IF(A78>=#REF!,\"\",IF(A78<=#REF!,#REF!,#REF!))","v":{"$error":"#REF!"}},{"$f":"IF(A78>#REF!,\"\",#REF!)","v":{"$error":"#REF!"}},null,71,{"$f":"IF(F78>=#REF!,\"\",IF(F78<=#REF!,#REF!,#REF!))","v":{"$error":"#REF!"}},{"$f":"IF(F78>=#REF!,\"\",IF(F78<=#REF!,#REF!,#REF!))","v":{"$error":"#REF!"}},{"$f":"IF(F78>#REF!,\"\",PMT(#REF!/12,#REF!,-#REF!))","v":{"$error":"#REF!"}},null,null,null,null,71,{"$f":"IF(N78>#REF!,\"\",$L$7)","v":{"$error":"#REF!"}},{"$f":"IF(N78>=#REF!,\"\",IF(N78<=#REF!,#REF!,#REF!))","v":{"$error":"#REF!"}},{"$f":"IF(N78>#REF!,\"\",#REF!)","v":{"$error":"#REF!"}},null,null,null,null,71,{"$f":"IF(V78>#REF!,\"\",$T$7)","v":{"$error":"#REF!"}},{"$f":"IF(V78>=#REF!,\"\",IF(V78<=#REF!,#REF!,#REF!))","v":{"$error":"#REF!"}},{"$f":"IF(V78>#REF!,\"\",#REF!)","v":{"$error":"#REF!"}},null,null,null,null,null,null,null,71]
[72,{"$f":"IF(A79>=#REF!,\"\",IF(A79<=#REF!,#REF!,#REF!))","v":{"$error":"#REF!"}},{"$f":"IF(A79>=#REF!,\"\",IF(A79<=#REF!,#REF!,#REF!))","v":{"$error":"#REF!"}},{"$f":"IF(A79>#REF!,\"\",#REF!)","v":{"$error":"#REF!"}},null,72,{"$f":"IF(F79>=#REF!,\"\",IF(F79<=#REF!,#REF!,#REF!))","v":{"$error":"#REF!"}},{"$f":"IF(F79>=#REF!,\"\",IF(F79<=#REF!,#REF!,#REF!))","v":{"$error":"#REF!"}},{"$f":"IF(F79>#REF!,\"\",PMT(#REF!/12,#REF!,-#REF!))","v":{"$error":"#REF!"}},null,null,null,null,72,{"$f":"IF(N79>#REF!,\"\",$L$7)","v":{"$error":"#REF!"}},{"$f":"IF(N79>=#REF!,\"\",IF(N79<=#REF!,#REF!,#REF!))","v":{"$error":"#REF!"}},{"$f":"IF(N79>#REF!,\"\",#REF!)","v":{"$error":"#REF!"}},null,null,null,null,72,{"$f":"IF(V79>#REF!,\"\",$T$7)","v":{"$error":"#REF!"}},{"$f":"IF(V79>=#REF!,\"\",IF(V79<=#REF!,#REF!,#REF!))","v":{"$error":"#REF!"}},{"$f":"IF(V79>#REF!,\"\",#REF!)","v":{"$error":"#REF!"}},null,null,null,null,null,null,null,72]
[73,{"$f":"IF(A80>=#REF!,\"\",IF(A80<=#REF!,#REF!,#REF!))","v":{"$error":"#REF!"}},{"$f":"IF(A80>=#REF!,\"\",IF(A80<=#REF!,#REF!,#REF!))","v":{"$error":"#REF!"}},{"$f":"IF(A80>#REF!,\"\",#REF!)","v":{"$error":"#REF!"}},null,73,{"$f":"IF(F80>=#REF!,\"\",IF(F80<=#REF!,#REF!,#REF!))","v":{"$error":"#REF!"}},{"$f":"IF(F80>=#REF!,\"\",IF(F80<=#REF!,#REF!,#REF!))","v":{"$error":"#REF!"}},{"$f":"IF(F80>#REF!,\"\",PMT(#REF!/12,#REF!,-#REF!))","v":{"$error":"#REF!"}},null,null,null,null,73,{"$f":"IF(N80>#REF!,\"\",$L$7)","v":{"$error":"#REF!"}},{"$f":"IF(N80>=#REF!,\"\",IF(N80<=#REF!,#REF!,#REF!))","v":{"$error":"#REF!"}},{"$f":"IF(N80>#REF!,\"\",#REF!)","v":{"$error":"#REF!"}},null,null,null,null,73,{"$f":"IF(V80>#REF!,\"\",$T$7)","v":{"$error":"#REF!"}},{"$f":"IF(V80>=#REF!,\"\",IF(V80<=#REF!,#REF!,#REF!))","v":{"$error":"#REF!"}},{"$f":"IF(V80>#REF!,\"\",#REF!)","v":{"$error":"#REF!"}},null,null,null,null,null,null,null,73]
[74,{"$f":"IF(A81>=#REF!,\"\",IF(A81<=#REF!,#REF!,#REF!))","v":{"$error":"#REF!"}},{"$f":"IF(A81>=#REF!,\"\",IF(A81<=#REF!,#REF!,#REF!))","v":{"$error":"#REF!"}},{"$f":"IF(A81>#REF!,\"\",#REF!)","v":{"$error":"#REF!"}},null,74,{"$f":"IF(F81>=#REF!,\"\",IF(F81<=#REF!,#REF!,#REF!))","v":{"$error":"#REF!"}},{"$f":"IF(F81>=#REF!,\"\",IF(F81<=#REF!,#REF!,#REF!))","v":{"$error":"#REF!"}},{"$f":"IF(F81>#REF!,\"\",PMT(#REF!/12,#REF!,-#REF!))","v":{"$error":"#REF!"}},null,null,null,null,74,{"$f":"IF(N81>#REF!,\"\",$L$7)","v":{"$error":"#REF!"}},{"$f":"IF(N81>=#REF!,\"\",IF(N81<=#REF!,#REF!,#REF!))","v":{"$error":"#REF!"}},{"$f":"IF(N81>#REF!,\"\",#REF!)","v":{"$error":"#REF!"}},null,null,null,null,74,{"$f":"IF(V81>#REF!,\"\",$T$7)","v":{"$error":"#REF!"}},{"$f":"IF(V81>=#REF!,\"\",IF(V81<=#REF!,#REF!,#REF!))","v":{"$error":"#REF!"}},{"$f":"IF(V81>#REF!,\"\",#REF!)","v":{"$error":"#REF!"}},null,null,null,null,null,null,null,74]
[75,{"$f":"IF(A82>=#REF!,\"\",IF(A82<=#REF!,#REF!,#REF!))","v":{"$error":"#REF!"}},{"$f":"IF(A82>=#REF!,\"\",IF(A82<=#REF!,#REF!,#REF!))","v":{"$error":"#REF!"}},{"$f":"IF(A82>#REF!,\"\",#REF!)","v":{"$error":"#REF!"}},null,75,{"$f":"IF(F82>=#REF!,\"\",IF(F82<=#REF!,#REF!,#REF!))","v":{"$error":"#REF!"}},{"$f":"IF(F82>=#REF!,\"\",IF(F82<=#REF!,#REF!,#REF!))","v":{"$error":"#REF!"}},{"$f":"IF(F82>#REF!,\"\",PMT(#REF!/12,#REF!,-#REF!))","v":{"$error":"#REF!"}},null,null,null,null,75,{"$f":"IF(N82>#REF!,\"\",$L$7)","v":{"$error":"#REF!"}},{"$f":"IF(N82>=#REF!,\"\",IF(N82<=#REF!,#REF!,#REF!))","v":{"$error":"#REF!"}},{"$f":"IF(N82>#REF!,\"\",#REF!)","v":{"$error":"#REF!"}},null,null,null,null,75,{"$f":"IF(V82>#REF!,\"\",$T$7)","v":{"$error":"#REF!"}},{"$f":"IF(V82>=#REF!,\"\",IF(V82<=#REF!,#REF!,#REF!))","v":{"$error":"#REF!"}},{"$f":"IF(V82>#REF!,\"\",#REF!)","v":{"$error":"#REF!"}},null,null,null,null,null,null,null,75]
[76,{"$f":"IF(A83>=#REF!,\"\",IF(A83<=#REF!,#REF!,#REF!))","v":{"$error":"#REF!"}},{"$f":"IF(A83>=#REF!,\"\",IF(A83<=#REF!,#REF!,#REF!))","v":{"$error":"#REF!"}},{"$f":"IF(A83>#REF!,\"\",#REF!)","v":{"$error":"#REF!"}},null,76,{"$f":"IF(F83>=#REF!,\"\",IF(F83<=#REF!,#REF!,#REF!))","v":{"$error":"#REF!"}},{"$f":"IF(F83>=#REF!,\"\",IF(F83<=#REF!,#REF!,#REF!))","v":{"$error":"#REF!"}},{"$f":"IF(F83>#REF!,\"\",PMT(#REF!/12,#REF!,-#REF!))","v":{"$error":"#REF!"}},null,null,null,null,76,{"$f":"IF(N83>#REF!,\"\",$L$7)","v":{"$error":"#REF!"}},{"$f":"IF(N83>=#REF!,\"\",IF(N83<=#REF!,#REF!,#REF!))","v":{"$error":"#REF!"}},{"$f":"IF(N83>#REF!,\"\",#REF!)","v":{"$error":"#REF!"}},null,null,null,null,76,{"$f":"IF(V83>#REF!,\"\",$T$7)","v":{"$error":"#REF!"}},{"$f":"IF(V83>=#REF!,\"\",IF(V83<=#REF!,#REF!,#REF!))","v":{"$error":"#REF!"}},{"$f":"IF(V83>#REF!,\"\",#REF!)","v":{"$error":"#REF!"}},null,null,null,null,null,null,null,76]
[77,{"$f":"IF(A84>=#REF!,\"\",IF(A84<=#REF!,#REF!,#REF!))","v":{"$error":"#REF!"}},{"$f":"IF(A84>=#REF!,\"\",IF(A84<=#REF!,#REF!,#REF!))","v":{"$error":"#REF!"}},{"$f":"IF(A84>#REF!,\"\",#REF!)","v":{"$error":"#REF!"}},null,77,{"$f":"IF(F84>=#REF!,\"\",IF(F84<=#REF!,#REF!,#REF!))","v":{"$error":"#REF!"}},{"$f":"IF(F84>=#REF!,\"\",IF(F84<=#REF!,#REF!,#REF!))","v":{"$error":"#REF!"}},{"$f":"IF(F84>#REF!,\"\",PMT(#REF!/12,#REF!,-#REF!))","v":{"$error":"#REF!"}},null,null,null,null,77,{"$f":"IF(N84>#REF!,\"\",$L$7)","v":{"$error":"#REF!"}},{"$f":"IF(N84>=#REF!,\"\",IF(N84<=#REF!,#REF!,#REF!))","v":{"$error":"#REF!"}},{"$f":"IF(N84>#REF!,\"\",#REF!)","v":{"$error":"#REF!"}},null,null,null,null,77,{"$f":"IF(V84>#REF!,\"\",$T$7)","v":{"$error":"#REF!"}},{"$f":"IF(V84>=#REF!,\"\",IF(V84<=#REF!,#REF!,#REF!))","v":{"$error":"#REF!"}},{"$f":"IF(V84>#REF!,\"\",#REF!)","v":{"$error":"#REF!"}},null,null,null,null,null,null,null,77]
[78,{"$f":"IF(A85>=#REF!,\"\",IF(A85<=#REF!,#REF!,#REF!))","v":{"$error":"#REF!"}},{"$f":"IF(A85>=#REF!,\"\",IF(A85<=#REF!,#REF!,#REF!))","v":{"$error":"#REF!"}},{"$f":"IF(A85>#REF!,\"\",#REF!)","v":{"$error":"#REF!"}},null,78,{"$f":"IF(F85>=#REF!,\"\",IF(F85<=#REF!,#REF!,#REF!))","v":{"$error":"#REF!"}},{"$f":"IF(F85>=#REF!,\"\",IF(F85<=#REF!,#REF!,#REF!))","v":{"$error":"#REF!"}},{"$f":"IF(F85>#REF!,\"\",PMT(#REF!/12,#REF!,-#REF!))","v":{"$error":"#REF!"}},null,null,null,null,78,{"$f":"IF(N85>#REF!,\"\",$L$7)","v":{"$error":"#REF!"}},{"$f":"IF(N85>=#REF!,\"\",IF(N85<=#REF!,#REF!,#REF!))","v":{"$error":"#REF!"}},{"$f":"IF(N85>#REF!,\"\",#REF!)","v":{"$error":"#REF!"}},null,null,null,null,78,{"$f":"IF(V85>#REF!,\"\",$T$7)","v":{"$error":"#REF!"}},{"$f":"IF(V85>=#REF!,\"\",IF(V85<=#REF!,#REF!,#REF!))","v":{"$error":"#REF!"}},{"$f":"IF(V85>#REF!,\"\",#REF!)","v":{"$error":"#REF!"}},null,null,null,null,null,null,null,78]
[79,{"$f":"IF(A86>=#REF!,\"\",IF(A86<=#REF!,#REF!,#REF!))","v":{"$error":"#REF!"}},{"$f":"IF(A86>=#REF!,\"\",IF(A86<=#REF!,#REF!,#REF!))","v":{"$error":"#REF!"}},{"$f":"IF(A86>#REF!,\"\",#REF!)","v":{"$error":"#REF!"}},null,79,{"$f":"IF(F86>=#REF!,\"\",IF(F86<=#REF!,#REF!,#REF!))","v":{"$error":"#REF!"}},{"$f":"IF(F86>=#REF!,\"\",IF(F86<=#REF!,#REF!,#REF!))","v":{"$error":"#REF!"}},{"$f":"IF(F86>#REF!,\"\",PMT(#REF!/12,#REF!,-#REF!))","v":{"$error":"#REF!"}},null,null,null,null,79,{"$f":"IF(N86>#REF!,\"\",$L$7)","v":{"$error":"#REF!"}},{"$f":"IF(N86>=#REF!,\"\",IF(N86<=#REF!,#REF!,#REF!))","v":{"$error":"#REF!"}},{"$f":"IF(N86>#REF!,\"\",#REF!)","v":{"$error":"#REF!"}},null,null,null,null,79,{"$f":"IF(V86>#REF!,\"\",$T$7)","v":{"$error":"#REF!"}},{"$f":"IF(V86>=#REF!,\"\",IF(V86<=#REF!,#REF!,#REF!))","v":{"$error":"#REF!"}},{"$f":"IF(V86>#REF!,\"\",#REF!)","v":{"$error":"#REF!"}},null,null,null,null,null,null,null,79]
[80,{"$f":"IF(A87>=#REF!,\"\",IF(A87<=#REF!,#REF!,#REF!))","v":{"$error":"#REF!"}},{"$f":"IF(A87>=#REF!,\"\",IF(A87<=#REF!,#REF!,#REF!))","v":{"$error":"#REF!"}},{"$f":"IF(A87>#REF!,\"\",#REF!)","v":{"$error":"#REF!"}},null,80,{"$f":"IF(F87>=#REF!,\"\",IF(F87<=#REF!,#REF!,#REF!))","v":{"$error":"#REF!"}},{"$f":"IF(F87>=#REF!,\"\",IF(F87<=#REF!,#REF!,#REF!))","v":{"$error":"#REF!"}},{"$f":"IF(F87>#REF!,\"\",PMT(#REF!/12,#REF!,-#REF!))","v":{"$error":"#REF!"}},null,null,null,null,80,{"$f":"IF(N87>#REF!,\"\",$L$7)","v":{"$error":"#REF!"}},{"$f":"IF(N87>=#REF!,\"\",IF(N87<=#REF!,#REF!,#REF!))","v":{"$error":"#REF!"}},{"$f":"IF(N87>#REF!,\"\",#REF!)","v":{"$error":"#REF!"}},null,null,null,null,80,{"$f":"IF(V87>#REF!,\"\",$T$7)","v":{"$error":"#REF!"}},{"$f":"IF(V87>=#REF!,\"\",IF(V87<=#REF!,#REF!,#REF!))","v":{"$error":"#REF!"}},{"$f":"IF(V87>#REF!,\"\",#REF!)","v":{"$error":"#REF!"}},null,null,null,null,null,null,null,80]
[81,{"$f":"IF(A88>=#REF!,\"\",IF(A88<=#REF!,#REF!,#REF!))","v":{"$error":"#REF!"}},{"$f":"IF(A88>=#REF!,\"\",IF(A88<=#REF!,#REF!,#REF!))","v":{"$error":"#REF!"}},{"$f":"IF(A88>#REF!,\"\",#REF!)","v":{"$error":"#REF!"}},null,81,{"$f":"IF(F88>=#REF!,\"\",IF(F88<=#REF!,#REF!,#REF!))","v":{"$error":"#REF!"}},{"$f":"IF(F88>=#REF!,\"\",IF(F88<=#REF!,#REF!,#REF!))","v":{"$error":"#REF!"}},{"$f":"IF(F88>#REF!,\"\",PMT(#REF!/12,#REF!,-#REF!))","v":{"$error":"#REF!"}},null,null,null,null,81,{"$f":"IF(N88>#REF!,\"\",$L$7)","v":{"$error":"#REF!"}},{"$f":"IF(N88>=#REF!,\"\",IF(N88<=#REF!,#REF!,#REF!))","v":{"$error":"#REF!"}},{"$f":"IF(N88>#REF!,\"\",#REF!)","v":{"$error":"#REF!"}},null,null,null,null,81,{"$f":"IF(V88>#REF!,\"\",$T$7)","v":{"$error":"#REF!"}},{"$f":"IF(V88>=#REF!,\"\",IF(V88<=#REF!,#REF!,#REF!))","v":{"$error":"#REF!"}},{"$f":"IF(V88>#REF!,\"\",#REF!)","v":{"$error":"#REF!"}},null,null,null,null,null,null,null,81]
[82,{"$f":"IF(A89>=#REF!,\"\",IF(A89<=#REF!,#REF!,#REF!))","v":{"$error":"#REF!"}},{"$f":"IF(A89>=#REF!,\"\",IF(A89<=#REF!,#REF!,#REF!))","v":{"$error":"#REF!"}},{"$f":"IF(A89>#REF!,\"\",#REF!)","v":{"$error":"#REF!"}},null,82,{"$f":"IF(F89>=#REF!,\"\",IF(F89<=#REF!,#REF!,#REF!))","v":{"$error":"#REF!"}},{"$f":"IF(F89>=#REF!,\"\",IF(F89<=#REF!,#REF!,#REF!))","v":{"$error":"#REF!"}},{"$f":"IF(F89>#REF!,\"\",PMT(#REF!/12,#REF!,-#REF!))","v":{"$error":"#REF!"}},null,null,null,null,82,{"$f":"IF(N89>#REF!,\"\",$L$7)","v":{"$error":"#REF!"}},{"$f":"IF(N89>=#REF!,\"\",IF(N89<=#REF!,#REF!,#REF!))","v":{"$error":"#REF!"}},{"$f":"IF(N89>#REF!,\"\",#REF!)","v":{"$error":"#REF!"}},null,null,null,null,82,{"$f":"IF(V89>#REF!,\"\",$T$7)","v":{"$error":"#REF!"}},{"$f":"IF(V89>=#REF!,\"\",IF(V89<=#REF!,#REF!,#REF!))","v":{"$error":"#REF!"}},{"$f":"IF(V89>#REF!,\"\",#REF!)","v":{"$error":"#REF!"}},null,null,null,null,null,null,null,82]
[83,{"$f":"IF(A90>=#REF!,\"\",IF(A90<=#REF!,#REF!,#REF!))","v":{"$error":"#REF!"}},{"$f":"IF(A90>=#REF!,\"\",IF(A90<=#REF!,#REF!,#REF!))","v":{"$error":"#REF!"}},{"$f":"IF(A90>#REF!,\"\",#REF!)","v":{"$error":"#REF!"}},null,83,{"$f":"IF(F90>=#REF!,\"\",IF(F90<=#REF!,#REF!,#REF!))","v":{"$error":"#REF!"}},{"$f":"IF(F90>=#REF!,\"\",IF(F90<=#REF!,#REF!,#REF!))","v":{"$error":"#REF!"}},{"$f":"IF(F90>#REF!,\"\",PMT(#REF!/12,#REF!,-#REF!))","v":{"$error":"#REF!"}},null,null,null,null,83,{"$f":"IF(N90>#REF!,\"\",$L$7)","v":{"$error":"#REF!"}},{"$f":"IF(N90>=#REF!,\"\",IF(N90<=#REF!,#REF!,#REF!))","v":{"$error":"#REF!"}},{"$f":"IF(N90>#REF!,\"\",#REF!)","v":{"$error":"#REF!"}},null,null,null,null,83,{"$f":"IF(V90>#REF!,\"\",$T$7)","v":{"$error":"#REF!"}},{"$f":"IF(V90>=#REF!,\"\",IF(V90<=#REF!,#REF!,#REF!))","v":{"$error":"#REF!"}},{"$f":"IF(V90>#REF!,\"\",#REF!)","v":{"$error":"#REF!"}},null,null,null,null,null,null,null,83]
[84,{"$f":"IF(A91>=#REF!,\"\",IF(A91<=#REF!,#REF!,#REF!))","v":{"$error":"#REF!"}},{"$f":"IF(A91>=#REF!,\"\",IF(A91<=#REF!,#REF!,#REF!))","v":{"$error":"#REF!"}},{"$f":"IF(A91>#REF!,\"\",#REF!)","v":{"$error":"#REF!"}},null,84,{"$f":"IF(F91>=#REF!,\"\",IF(F91<=#REF!,#REF!,#REF!))","v":{"$error":"#REF!"}},{"$f":"IF(F91>=#REF!,\"\",IF(F91<=#REF!,#REF!,#REF!))","v":{"$error":"#REF!"}},{"$f":"IF(F91>#REF!,\"\",PMT(#REF!/12,#REF!,-#REF!))","v":{"$error":"#REF!"}},null,null,null,null,84,{"$f":"IF(N91>#REF!,\"\",$L$7)","v":{"$error":"#REF!"}},{"$f":"IF(N91>=#REF!,\"\",IF(N91<=#REF!,#REF!,#REF!))","v":{"$error":"#REF!"}},{"$f":"IF(N91>#REF!,\"\",#REF!)","v":{"$error":"#REF!"}},null,null,null,null,84,{"$f":"IF(V91>#REF!,\"\",$T$7)","v":{"$error":"#REF!"}},{"$f":"IF(V91>=#REF!,\"\",IF(V91<=#REF!,#REF!,#REF!))","v":{"$error":"#REF!"}},{"$f":"IF(V91>#REF!,\"\",#REF!)","v":{"$error":"#REF!"}},null,null,null,null,null,null,null,84]
[85,{"$f":"IF(A92>=#REF!,\"\",IF(A92<=#REF!,#REF!,#REF!))","v":{"$error":"#REF!"}},{"$f":"IF(A92>=#REF!,\"\",IF(A92<=#REF!,#REF!,#REF!))","v":{"$error":"#REF!"}},{"$f":"IF(A92>#REF!,\"\",#REF!)","v":{"$error":"#REF!"}},null,85,{"$f":"IF(F92>=#REF!,\"\",IF(F92<=#REF!,#REF!,#REF!))","v":{"$error":"#REF!"}},{"$f":"IF(F92>=#REF!,\"\",IF(F92<=#REF!,#REF!,#REF!))","v":{"$error":"#REF!"}},{"$f":"IF(F92>#REF!,\"\",PMT(#REF!/12,#REF!,-#REF!))","v":{"$error":"#REF!"}},null,null,null,null,85,{"$f":"IF(N92>#REF!,\"\",$L$7)","v":{"$error":"#REF!"}},{"$f":"IF(N92>=#REF!,\"\",IF(N92<=#REF!,#REF!,#REF!))","v":{"$error":"#REF!"}},{"$f":"IF(N92>#REF!,\"\",#REF!)","v":{"$error":"#REF!"}},null,null,null,null,85,{"$f":"IF(V92>#REF!,\"\",$T$7)","v":{"$error":"#REF!"}},{"$f":"IF(V92>=#REF!,\"\",IF(V92<=#REF!,#REF!,#REF!))","v":{"$error":"#REF!"}},{"$f":"IF(V92>#REF!,\"\",#REF!)","v":{"$error":"#REF!"}},null,null,null,null,null,null,null,85]
[86,{"$f":"IF(A93>=#REF!,\"\",IF(A93<=#REF!,#REF!,#REF!))","v":{"$error":"#REF!"}},{"$f":"IF(A93>=#REF!,\"\",IF(A93<=#REF!,#REF!,#REF!))","v":{"$error":"#REF!"}},{"$f":"IF(A93>#REF!,\"\",#REF!)","v":{"$error":"#REF!"}},null,86,{"$f":"IF(F93>=#REF!,\"\",IF(F93<=#REF!,#REF!,#REF!))","v":{"$error":"#REF!"}},{"$f":"IF(F93>=#REF!,\"\",IF(F93<=#REF!,#REF!,#REF!))","v":{"$error":"#REF!"}},{"$f":"IF(F93>#REF!,\"\",PMT(#REF!/12,#REF!,-#REF!))","v":{"$error":"#REF!"}},null,null,null,null,86,{"$f":"IF(N93>#REF!,\"\",$L$7)","v":{"$error":"#REF!"}},{"$f":"IF(N93>=#REF!,\"\",IF(N93<=#REF!,#REF!,#REF!))","v":{"$error":"#REF!"}},{"$f":"IF(N93>#REF!,\"\",#REF!)","v":{"$error":"#REF!"}},null,null,null,null,86,{"$f":"IF(V93>#REF!,\"\",$T$7)","v":{"$error":"#REF!"}},{"$f":"IF(V93>=#REF!,\"\",IF(V93<=#REF!,#REF!,#REF!))","v":{"$error":"#REF!"}},{"$f":"IF(V93>#REF!,\"\",#REF!)","v":{"$error":"#REF!"}},null,null,null,null,null,null,null,86]
[87,{"$f":"IF(A94>=#REF!,\"\",IF(A94<=#REF!,#REF!,#REF!))","v":{"$error":"#REF!"}},{"$f":"IF(A94>=#REF!,\"\",IF(A94<=#REF!,#REF!,#REF!))","v":{"$error":"#REF!"}},{"$f":"IF(A94>#REF!,\"\",#REF!)","v":{"$error":"#REF!"}},null,87,{"$f":"IF(F94>=#REF!,\"\",IF(F94<=#REF!,#REF!,#REF!))","v":{"$error":"#REF!"}},{"$f":"IF(F94>=#REF!,\"\",IF(F94<=#REF!,#REF!,#REF!))","v":{"$error":"#REF!"}},{"$f":"IF(F94>#REF!,\"\",PMT(#REF!/12,#REF!,-#REF!))","v":{"$error":"#REF!"}},null,null,null,null,87,{"$f":"IF(N94>#REF!,\"\",$L$7)","v":{"$error":"#REF!"}},{"$f":"IF(N94>=#REF!,\"\",IF(N94<=#REF!,#REF!,#REF!))","v":{"$error":"#REF!"}},{"$f":"IF(N94>#REF!,\"\",#REF!)","v":{"$error":"#REF!"}},null,null,null,null,87,{"$f":"IF(V94>#REF!,\"\",$T$7)","v":{"$error":"#REF!"}},{"$f":"IF(V94>=#REF!,\"\",IF(V94<=#REF!,#REF!,#REF!))","v":{"$error":"#REF!"}},{"$f":"IF(V94>#REF!,\"\",#REF!)","v":{"$error":"#REF!"}},null,null,null,null,null,null,null,87]
[88,{"$f":"IF(A95>=#REF!,\"\",IF(A95<=#REF!,#REF!,#REF!))","v":{"$error":"#REF!"}},{"$f":"IF(A95>=#REF!,\"\",IF(A95<=#REF!,#REF!,#REF!))","v":{"$error":"#REF!"}},{"$f":"IF(A95>#REF!,\"\",#REF!)","v":{"$error":"#REF!"}},null,88,{"$f":"IF(F95>=#REF!,\"\",IF(F95<=#REF!,#REF!,#REF!))","v":{"$error":"#REF!"}},{"$f":"IF(F95>=#REF!,\"\",IF(F95<=#REF!,#REF!,#REF!))","v":{"$error":"#REF!"}},{"$f":"IF(F95>#REF!,\"\",PMT(#REF!/12,#REF!,-#REF!))","v":{"$error":"#REF!"}},null,null,null,null,88,{"$f":"IF(N95>#REF!,\"\",$L$7)","v":{"$error":"#REF!"}},{"$f":"IF(N95>=#REF!,\"\",IF(N95<=#REF!,#REF!,#REF!))","v":{"$error":"#REF!"}},{"$f":"IF(N95>#REF!,\"\",#REF!)","v":{"$error":"#REF!"}},null,null,null,null,88,{"$f":"IF(V95>#REF!,\"\",$T$7)","v":{"$error":"#REF!"}},{"$f":"IF(V95>=#REF!,\"\",IF(V95<=#REF!,#REF!,#REF!))","v":{"$error":"#REF!"}},{"$f":"IF(V95>#REF!,\"\",#REF!)","v":{"$error":"#REF!"}},null,null,null,null,null,null,null,88]
[89,{"$f":"IF(A96>=#REF!,\"\",IF(A96<=#REF!,#REF!,#REF!))","v":{"$error":"#REF!"}},{"$f":"IF(A96>=#REF!,\"\",IF(A96<=#REF!,#REF!,#REF!))","v":{"$error":"#REF!"}},{"$f":"IF(A96>#REF!,\"\",#REF!)","v":{"$error":"#REF!"}},null,89,{"$f":"IF(F96>=#REF!,\"\",IF(F96<=#REF!,#REF!,#REF!))","v":{"$error":"#REF!"}},{"$f":"IF(F96>=#REF!,\"\",IF(F96<=#REF!,#REF!,#REF!))","v":{"$error":"#REF!"}},{"$f":"IF(F96>#REF!,\"\",PMT(#REF!/12,#REF!,-#REF!))","v":{"$error":"#REF!"}},null,null,null,null,89,{"$f":"IF(N96>#REF!,\"\",$L$7)","v":{"$error":"#REF!"}},{"$f":"IF(N96>=#REF!,\"\",IF(N96<=#REF!,#REF!,#REF!))","v":{"$error":"#REF!"}},{"$f":"IF(N96>#REF!,\"\",#REF!)","v":{"$error":"#REF!"}},null,null,null,null,89,{"$f":"IF(V96>#REF!,\"\",$T$7)","v":{"$error":"#REF!"}},{"$f":"IF(V96>=#REF!,\"\",IF(V96<=#REF!,#REF!,#REF!))","v":{"$error":"#REF!"}},{"$f":"IF(V96>#REF!,\"\",#REF!)","v":{"$error":"#REF!"}},null,null,null,null,null,null,null,89]
[90,{"$f":"IF(A97>=#REF!,\"\",IF(A97<=#REF!,#REF!,#REF!))","v":{"$error":"#REF!"}},{"$f":"IF(A97>=#REF!,\"\",IF(A97<=#REF!,#REF!,#REF!))","v":{"$error":"#REF!"}},{"$f":"IF(A97>#REF!,\"\",#REF!)","v":{"$error":"#REF!"}},null,90,{"$f":"IF(F97>=#REF!,\"\",IF(F97<=#REF!,#REF!,#REF!))","v":{"$error":"#REF!"}},{"$f":"IF(F97>=#REF!,\"\",IF(F97<=#REF!,#REF!,#REF!))","v":{"$error":"#REF!"}},{"$f":"IF(F97>#REF!,\"\",PMT(#REF!/12,#REF!,-#REF!))","v":{"$error":"#REF!"}},null,null,null,null,90,{"$f":"IF(N97>#REF!,\"\",$L$7)","v":{"$error":"#REF!"}},{"$f":"IF(N97>=#REF!,\"\",IF(N97<=#REF!,#REF!,#REF!))","v":{"$error":"#REF!"}},{"$f":"IF(N97>#REF!,\"\",#REF!)","v":{"$error":"#REF!"}},null,null,null,null,90,{"$f":"IF(V97>#REF!,\"\",$T$7)","v":{"$error":"#REF!"}},{"$f":"IF(V97>=#REF!,\"\",IF(V97<=#REF!,#REF!,#REF!))","v":{"$error":"#REF!"}},{"$f":"IF(V97>#REF!,\"\",#REF!)","v":{"$error":"#REF!"}},null,null,null,null,null,null,null,90]
[91,{"$f":"IF(A98>=#REF!,\"\",IF(A98<=#REF!,#REF!,#REF!))","v":{"$error":"#REF!"}},{"$f":"IF(A98>=#REF!,\"\",IF(A98<=#REF!,#REF!,#REF!))","v":{"$error":"#REF!"}},{"$f":"IF(A98>#REF!,\"\",#REF!)","v":{"$error":"#REF!"}},null,91,{"$f":"IF(F98>=#REF!,\"\",IF(F98<=#REF!,#REF!,#REF!))","v":{"$error":"#REF!"}},{"$f":"IF(F98>=#REF!,\"\",IF(F98<=#REF!,#REF!,#REF!))","v":{"$error":"#REF!"}},{"$f":"IF(F98>#REF!,\"\",PMT(#REF!/12,#REF!,-#REF!))","v":{"$error":"#REF!"}},null,null,null,null,91,{"$f":"IF(N98>#REF!,\"\",$L$7)","v":{"$error":"#REF!"}},{"$f":"IF(N98>=#REF!,\"\",IF(N98<=#REF!,#REF!,#REF!))","v":{"$error":"#REF!"}},{"$f":"IF(N98>#REF!,\"\",#REF!)","v":{"$error":"#REF!"}},null,null,null,null,91,{"$f":"IF(V98>#REF!,\"\",$T$7)","v":{"$error":"#REF!"}},{"$f":"IF(V98>=#REF!,\"\",IF(V98<=#REF!,#REF!,#REF!))","v":{"$error":"#REF!"}},{"$f":"IF(V98>#REF!,\"\",#REF!)","v":{"$error":"#REF!"}},null,null,null,null,null,null,null,91]
[92,{"$f":"IF(A99>=#REF!,\"\",IF(A99<=#REF!,#REF!,#REF!))","v":{"$error":"#REF!"}},{"$f":"IF(A99>=#REF!,\"\",IF(A99<=#REF!,#REF!,#REF!))","v":{"$error":"#REF!"}},{"$f":"IF(A99>#REF!,\"\",#REF!)","v":{"$error":"#REF!"}},null,92,{"$f":"IF(F99>=#REF!,\"\",IF(F99<=#REF!,#REF!,#REF!))","v":{"$error":"#REF!"}},{"$f":"IF(F99>=#REF!,\"\",IF(F99<=#REF!,#REF!,#REF!))","v":{"$error":"#REF!"}},{"$f":"IF(F99>#REF!,\"\",PMT(#REF!/12,#REF!,-#REF!))","v":{"$error":"#REF!"}},null,null,null,null,92,{"$f":"IF(N99>#REF!,\"\",$L$7)","v":{"$error":"#REF!"}},{"$f":"IF(N99>=#REF!,\"\",IF(N99<=#REF!,#REF!,#REF!))","v":{"$error":"#REF!"}},{"$f":"IF(N99>#REF!,\"\",#REF!)","v":{"$error":"#REF!"}},null,null,null,null,92,{"$f":"IF(V99>#REF!,\"\",$T$7)","v":{"$error":"#REF!"}},{"$f":"IF(V99>=#REF!,\"\",IF(V99<=#REF!,#REF!,#REF!))","v":{"$error":"#REF!"}},{"$f":"IF(V99>#REF!,\"\",#REF!)","v":{"$error":"#REF!"}},null,null,null,null,null,null,null,92]
[93,{"$f":"IF(A100>=#REF!,\"\",IF(A100<=#REF!,#REF!,#REF!))","v":{"$error":"#REF!"}},{"$f":"IF(A100>=#REF!,\"\",IF(A100<=#REF!,#REF!,#REF!))","v":{"$error":"#REF!"}},{"$f":"IF(A100>#REF!,\"\",#REF!)","v":{"$error":"#REF!"}},null,93,{"$f":"IF(F100>=#REF!,\"\",IF(F100<=#REF!,#REF!,#REF!))","v":{"$error":"#REF!"}},{"$f":"IF(F100>=#REF!,\"\",IF(F100<=#REF!,#REF!,#REF!))","v":{"$error":"#REF!"}},{"$f":"IF(F100>#REF!,\"\",PMT(#REF!/12,#REF!,-#REF!))","v":{"$error":"#REF!"}},null,null,null,null,93,{"$f":"IF(N100>#REF!,\"\",$L$7)","v":{"$error":"#REF!"}},{"$f":"IF(N100>=#REF!,\"\",IF(N100<=#REF!,#REF!,#REF!))","v":{"$error":"#REF!"}},{"$f":"IF(N100>#REF!,\"\",#REF!)","v":{"$error":"#REF!"}},null,null,null,null,93,{"$f":"IF(V100>#REF!,\"\",$T$7)","v":{"$error":"#REF!"}},{"$f":"IF(V100>=#REF!,\"\",IF(V100<=#REF!,#REF!,#REF!))","v":{"$error":"#REF!"}},{"$f":"IF(V100>#REF!,\"\",#REF!)","v":{"$error":"#REF!"}},null,null,null,null,null,null,null,93]
[94,{"$f":"IF(A101>=#REF!,\"\",IF(A101<=#REF!,#REF!,#REF!))","v":{"$error":"#REF!"}},{"$f":"IF(A101>=#REF!,\"\",IF(A101<=#REF!,#REF!,#REF!))","v":{"$error":"#REF!"}},{"$f":"IF(A101>#REF!,\"\",#REF!)","v":{"$error":"#REF!"}},null,94,{"$f":"IF(F101>=#REF!,\"\",IF(F101<=#REF!,#REF!,#REF!))","v":{"$error":"#REF!"}},{"$f":"IF(F101>=#REF!,\"\",IF(F101<=#REF!,#REF!,#REF!))","v":{"$error":"#REF!"}},{"$f":"IF(F101>#REF!,\"\",PMT(#REF!/12,#REF!,-#REF!))","v":{"$error":"#REF!"}},null,null,null,null,94,{"$f":"IF(N101>#REF!,\"\",$L$7)","v":{"$error":"#REF!"}},{"$f":"IF(N101>=#REF!,\"\",IF(N101<=#REF!,#REF!,#REF!))","v":{"$error":"#REF!"}},{"$f":"IF(N101>#REF!,\"\",#REF!)","v":{"$error":"#REF!"}},null,null,null,null,94,{"$f":"IF(V101>#REF!,\"\",$T$7)","v":{"$error":"#REF!"}},{"$f":"IF(V101>=#REF!,\"\",IF(V101<=#REF!,#REF!,#REF!))","v":{"$error":"#REF!"}},{"$f":"IF(V101>#REF!,\"\",#REF!)","v":{"$error":"#REF!"}},null,null,null,null,null,null,null,94]
[95,{"$f":"IF(A102>=#REF!,\"\",IF(A102<=#REF!,#REF!,#REF!))","v":{"$error":"#REF!"}},{"$f":"IF(A102>=#REF!,\"\",IF(A102<=#REF!,#REF!,#REF!))","v":{"$error":"#REF!"}},{"$f":"IF(A102>#REF!,\"\",#REF!)","v":{"$error":"#REF!"}},null,95,{"$f":"IF(F102>=#REF!,\"\",IF(F102<=#REF!,#REF!,#REF!))","v":{"$error":"#REF!"}},{"$f":"IF(F102>=#REF!,\"\",IF(F102<=#REF!,#REF!,#REF!))","v":{"$error":"#REF!"}},{"$f":"IF(F102>#REF!,\"\",PMT(#REF!/12,#REF!,-#REF!))","v":{"$error":"#REF!"}},null,null,null,null,95,{"$f":"IF(N102>#REF!,\"\",$L$7)","v":{"$error":"#REF!"}},{"$f":"IF(N102>=#REF!,\"\",IF(N102<=#REF!,#REF!,#REF!))","v":{"$error":"#REF!"}},{"$f":"IF(N102>#REF!,\"\",#REF!)","v":{"$error":"#REF!"}},null,null,null,null,95,{"$f":"IF(V102>#REF!,\"\",$T$7)","v":{"$error":"#REF!"}},{"$f":"IF(V102>=#REF!,\"\",IF(V102<=#REF!,#REF!,#REF!))","v":{"$error":"#REF!"}},{"$f":"IF(V102>#REF!,\"\",#REF!)","v":{"$error":"#REF!"}},null,null,null,null,null,null,null,95]
[96,{"$f":"IF(A103>=#REF!,\"\",IF(A103<=#REF!,#REF!,#REF!))","v":{"$error":"#REF!"}},{"$f":"IF(A103>=#REF!,\"\",IF(A103<=#REF!,#REF!,#REF!))","v":{"$error":"#REF!"}},{"$f":"IF(A103>#REF!,\"\",#REF!)","v":{"$error":"#REF!"}},null,96,{"$f":"IF(F103>=#REF!,\"\",IF(F103<=#REF!,#REF!,#REF!))","v":{"$error":"#REF!"}},{"$f":"IF(F103>=#REF!,\"\",IF(F103<=#REF!,#REF!,#REF!))","v":{"$error":"#REF!"}},{"$f":"IF(F103>#REF!,\"\",PMT(#REF!/12,#REF!,-#REF!))","v":{"$error":"#REF!"}},null,null,null,null,96,{"$f":"IF(N103>#REF!,\"\",$L$7)","v":{"$error":"#REF!"}},{"$f":"IF(N103>=#REF!,\"\",IF(N103<=#REF!,#REF!,#REF!))","v":{"$error":"#REF!"}},{"$f":"IF(N103>#REF!,\"\",#REF!)","v":{"$error":"#REF!"}},null,null,null,null,96,{"$f":"IF(V103>#REF!,\"\",$T$7)","v":{"$error":"#REF!"}},{"$f":"IF(V103>=#REF!,\"\",IF(V103<=#REF!,#REF!,#REF!))","v":{"$error":"#REF!"}},{"$f":"IF(V103>#REF!,\"\",#REF!)","v":{"$error":"#REF!"}},null,null,null,null,null,null,null,96]
[97,{"$f":"IF(A104>=#REF!,\"\",IF(A104<=#REF!,#REF!,#REF!))","v":{"$error":"#REF!"}},{"$f":"IF(A104>=#REF!,\"\",IF(A104<=#REF!,#REF!,#REF!))","v":{"$error":"#REF!"}},{"$f":"IF(A104>#REF!,\"\",#REF!)","v":{"$error":"#REF!"}},null,97,{"$f":"IF(F104>=#REF!,\"\",IF(F104<=#REF!,#REF!,#REF!))","v":{"$error":"#REF!"}},{"$f":"IF(F104>=#REF!,\"\",IF(F104<=#REF!,#REF!,#REF!))","v":{"$error":"#REF!"}},{"$f":"IF(F104>#REF!,\"\",PMT(#REF!/12,#REF!,-#REF!))","v":{"$error":"#REF!"}},null,null,null,null,97,{"$f":"IF(N104>#REF!,\"\",$L$7)","v":{"$error":"#REF!"}},{"$f":"IF(N104>=#REF!,\"\",IF(N104<=#REF!,#REF!,#REF!))","v":{"$error":"#REF!"}},{"$f":"IF(N104>#REF!,\"\",#REF!)","v":{"$error":"#REF!"}},null,null,null,null,97,{"$f":"IF(V104>#REF!,\"\",$T$7)","v":{"$error":"#REF!"}},{"$f":"IF(V104>=#REF!,\"\",IF(V104<=#REF!,#REF!,#REF!))","v":{"$error":"#REF!"}},{"$f":"IF(V104>#REF!,\"\",#REF!)","v":{"$error":"#REF!"}},null,null,null,null,null,null,null,97]
[98,{"$f":"IF(A105>=#REF!,\"\",IF(A105<=#REF!,#REF!,#REF!))","v":{"$error":"#REF!"}},{"$f":"IF(A105>=#REF!,\"\",IF(A105<=#REF!,#REF!,#REF!))","v":{"$error":"#REF!"}},{"$f":"IF(A105>#REF!,\"\",#REF!)","v":{"$error":"#REF!"}},null,98,{"$f":"IF(F105>=#REF!,\"\",IF(F105<=#REF!,#REF!,#REF!))","v":{"$error":"#REF!"}},{"$f":"IF(F105>=#REF!,\"\",IF(F105<=#REF!,#REF!,#REF!))","v":{"$error":"#REF!"}},{"$f":"IF(F105>#REF!,\"\",PMT(#REF!/12,#REF!,-#REF!))","v":{"$error":"#REF!"}},null,null,null,null,98,{"$f":"IF(N105>#REF!,\"\",$L$7)","v":{"$error":"#REF!"}},{"$f":"IF(N105>=#REF!,\"\",IF(N105<=#REF!,#REF!,#REF!))","v":{"$error":"#REF!"}},{"$f":"IF(N105>#REF!,\"\",#REF!)","v":{"$error":"#REF!"}},null,null,null,null,98,{"$f":"IF(V105>#REF!,\"\",$T$7)","v":{"$error":"#REF!"}},{"$f":"IF(V105>=#REF!,\"\",IF(V105<=#REF!,#REF!,#REF!))","v":{"$error":"#REF!"}},{"$f":"IF(V105>#REF!,\"\",#REF!)","v":{"$error":"#REF!"}},null,null,null,null,null,null,null,98]
[99,{"$f":"IF(A106>=#REF!,\"\",IF(A106<=#REF!,#REF!,#REF!))","v":{"$error":"#REF!"}},{"$f":"IF(A106>=#REF!,\"\",IF(A106<=#REF!,#REF!,#REF!))","v":{"$error":"#REF!"}},{"$f":"IF(A106>#REF!,\"\",#REF!)","v":{"$error":"#REF!"}},null,99,{"$f":"IF(F106>=#REF!,\"\",IF(F106<=#REF!,#REF!,#REF!))","v":{"$error":"#REF!"}},{"$f":"IF(F106>=#REF!,\"\",IF(F106<=#REF!,#REF!,#REF!))","v":{"$error":"#REF!"}},{"$f":"IF(F106>#REF!,\"\",PMT(#REF!/12,#REF!,-#REF!))","v":{"$error":"#REF!"}},null,null,null,null,99,{"$f":"IF(N106>#REF!,\"\",$L$7)","v":{"$error":"#REF!"}},{"$f":"IF(N106>=#REF!,\"\",IF(N106<=#REF!,#REF!,#REF!))","v":{"$error":"#REF!"}},{"$f":"IF(N106>#REF!,\"\",#REF!)","v":{"$error":"#REF!"}},null,null,null,null,99,{"$f":"IF(V106>#REF!,\"\",$T$7)","v":{"$error":"#REF!"}},{"$f":"IF(V106>=#REF!,\"\",IF(V106<=#REF!,#REF!,#REF!))","v":{"$error":"#REF!"}},{"$f":"IF(V106>#REF!,\"\",#REF!)","v":{"$error":"#REF!"}},null,null,null,null,null,null,null,99]
[100,{"$f":"IF(A107>=#REF!,\"\",IF(A107<=#REF!,#REF!,#REF!))","v":{"$error":"#REF!"}},{"$f":"IF(A107>=#REF!,\"\",IF(A107<=#REF!,#REF!,#REF!))","v":{"$error":"#REF!"}},{"$f":"IF(A107>#REF!,\"\",#REF!)","v":{"$error":"#REF!"}},null,100,{"$f":"IF(F107>=#REF!,\"\",IF(F107<=#REF!,#REF!,#REF!))","v":{"$error":"#REF!"}},{"$f":"IF(F107>=#REF!,\"\",IF(F107<=#REF!,#REF!,#REF!))","v":{"$error":"#REF!"}},{"$f":"IF(F107>#REF!,\"\",PMT(#REF!/12,#REF!,-#REF!))","v":{"$error":"#REF!"}},null,null,null,null,100,{"$f":"IF(N107>#REF!,\"\",$L$7)","v":{"$error":"#REF!"}},{"$f":"IF(N107>=#REF!,\"\",IF(N107<=#REF!,#REF!,#REF!))","v":{"$error":"#REF!"}},{"$f":"IF(N107>#REF!,\"\",#REF!)","v":{"$error":"#REF!"}},null,null,null,null,100,{"$f":"IF(V107>#REF!,\"\",$T$7)","v":{"$error":"#REF!"}},{"$f":"IF(V107>=#REF!,\"\",IF(V107<=#REF!,#REF!,#REF!))","v":{"$error":"#REF!"}},{"$f":"IF(V107>#REF!,\"\",#REF!)","v":{"$error":"#REF!"}},null,null,null,null,null,null,null,100]
[101,{"$f":"IF(A108>=#REF!,\"\",IF(A108<=#REF!,#REF!,#REF!))","v":{"$error":"#REF!"}},{"$f":"IF(A108>=#REF!,\"\",IF(A108<=#REF!,#REF!,#REF!))","v":{"$error":"#REF!"}},{"$f":"IF(A108>#REF!,\"\",#REF!)","v":{"$error":"#REF!"}},null,101,{"$f":"IF(F108>=#REF!,\"\",IF(F108<=#REF!,#REF!,#REF!))","v":{"$error":"#REF!"}},{"$f":"IF(F108>=#REF!,\"\",IF(F108<=#REF!,#REF!,#REF!))","v":{"$error":"#REF!"}},{"$f":"IF(F108>#REF!,\"\",PMT(#REF!/12,#REF!,-#REF!))","v":{"$error":"#REF!"}},null,null,null,null,101,{"$f":"IF(N108>#REF!,\"\",$L$7)","v":{"$error":"#REF!"}},{"$f":"IF(N108>=#REF!,\"\",IF(N108<=#REF!,#REF!,#REF!))","v":{"$error":"#REF!"}},{"$f":"IF(N108>#REF!,\"\",#REF!)","v":{"$error":"#REF!"}},null,null,null,null,101,{"$f":"IF(V108>#REF!,\"\",$T$7)","v":{"$error":"#REF!"}},{"$f":"IF(V108>=#REF!,\"\",IF(V108<=#REF!,#REF!,#REF!))","v":{"$error":"#REF!"}},{"$f":"IF(V108>#REF!,\"\",#REF!)","v":{"$error":"#REF!"}},null,null,null,null,null,null,null,101]
[102,{"$f":"IF(A109>=#REF!,\"\",IF(A109<=#REF!,#REF!,#REF!))","v":{"$error":"#REF!"}},{"$f":"IF(A109>=#REF!,\"\",IF(A109<=#REF!,#REF!,#REF!))","v":{"$error":"#REF!"}},{"$f":"IF(A109>#REF!,\"\",#REF!)","v":{"$error":"#REF!"}},null,102,{"$f":"IF(F109>=#REF!,\"\",IF(F109<=#REF!,#REF!,#REF!))","v":{"$error":"#REF!"}},{"$f":"IF(F109>=#REF!,\"\",IF(F109<=#REF!,#REF!,#REF!))","v":{"$error":"#REF!"}},{"$f":"IF(F109>#REF!,\"\",PMT(#REF!/12,#REF!,-#REF!))","v":{"$error":"#REF!"}},null,null,null,null,102,{"$f":"IF(N109>#REF!,\"\",$L$7)","v":{"$error":"#REF!"}},{"$f":"IF(N109>=#REF!,\"\",IF(N109<=#REF!,#REF!,#REF!))","v":{"$error":"#REF!"}},{"$f":"IF(N109>#REF!,\"\",#REF!)","v":{"$error":"#REF!"}},null,null,null,null,102,{"$f":"IF(V109>#REF!,\"\",$T$7)","v":{"$error":"#REF!"}},{"$f":"IF(V109>=#REF!,\"\",IF(V109<=#REF!,#REF!,#REF!))","v":{"$error":"#REF!"}},{"$f":"IF(V109>#REF!,\"\",#REF!)","v":{"$error":"#REF!"}},null,null,null,null,null,null,null,102]
[103,{"$f":"IF(A110>=#REF!,\"\",IF(A110<=#REF!,#REF!,#REF!))","v":{"$error":"#REF!"}},{"$f":"IF(A110>=#REF!,\"\",IF(A110<=#REF!,#REF!,#REF!))","v":{"$error":"#REF!"}},{"$f":"IF(A110>#REF!,\"\",#REF!)","v":{"$error":"#REF!"}},null,103,{"$f":"IF(F110>=#REF!,\"\",IF(F110<=#REF!,#REF!,#REF!))","v":{"$error":"#REF!"}},{"$f":"IF(F110>=#REF!,\"\",IF(F110<=#REF!,#REF!,#REF!))","v":{"$error":"#REF!"}},{"$f":"IF(F110>#REF!,\"\",PMT(#REF!/12,#REF!,-#REF!))","v":{"$error":"#REF!"}},null,null,null,null,103,{"$f":"IF(N110>#REF!,\"\",$L$7)","v":{"$error":"#REF!"}},{"$f":"IF(N110>=#REF!,\"\",IF(N110<=#REF!,#REF!,#REF!))","v":{"$error":"#REF!"}},{"$f":"IF(N110>#REF!,\"\",#REF!)","v":{"$error":"#REF!"}},null,null,null,null,103,{"$f":"IF(V110>#REF!,\"\",$T$7)","v":{"$error":"#REF!"}},{"$f":"IF(V110>=#REF!,\"\",IF(V110<=#REF!,#REF!,#REF!))","v":{"$error":"#REF!"}},{"$f":"IF(V110>#REF!,\"\",#REF!)","v":{"$error":"#REF!"}},null,null,null,null,null,null,null,103]
[104,{"$f":"IF(A111>=#REF!,\"\",IF(A111<=#REF!,#REF!,#REF!))","v":{"$error":"#REF!"}},{"$f":"IF(A111>=#REF!,\"\",IF(A111<=#REF!,#REF!,#REF!))","v":{"$error":"#REF!"}},{"$f":"IF(A111>#REF!,\"\",#REF!)","v":{"$error":"#REF!"}},null,104,{"$f":"IF(F111>=#REF!,\"\",IF(F111<=#REF!,#REF!,#REF!))","v":{"$error":"#REF!"}},{"$f":"IF(F111>=#REF!,\"\",IF(F111<=#REF!,#REF!,#REF!))","v":{"$error":"#REF!"}},{"$f":"IF(F111>#REF!,\"\",PMT(#REF!/12,#REF!,-#REF!))","v":{"$error":"#REF!"}},null,null,null,null,104,{"$f":"IF(N111>#REF!,\"\",$L$7)","v":{"$error":"#REF!"}},{"$f":"IF(N111>=#REF!,\"\",IF(N111<=#REF!,#REF!,#REF!))","v":{"$error":"#REF!"}},{"$f":"IF(N111>#REF!,\"\",#REF!)","v":{"$error":"#REF!"}},null,null,null,null,104,{"$f":"IF(V111>#REF!,\"\",$T$7)","v":{"$error":"#REF!"}},{"$f":"IF(V111>=#REF!,\"\",IF(V111<=#REF!,#REF!,#REF!))","v":{"$error":"#REF!"}},{"$f":"IF(V111>#REF!,\"\",#REF!)","v":{"$error":"#REF!"}},null,null,null,null,null,null,null,104]
[105,{"$f":"IF(A112>=#REF!,\"\",IF(A112<=#REF!,#REF!,#REF!))","v":{"$error":"#REF!"}},{"$f":"IF(A112>=#REF!,\"\",IF(A112<=#REF!,#REF!,#REF!))","v":{"$error":"#REF!"}},{"$f":"IF(A112>#REF!,\"\",#REF!)","v":{"$error":"#REF!"}},null,105,{"$f":"IF(F112>=#REF!,\"\",IF(F112<=#REF!,#REF!,#REF!))","v":{"$error":"#REF!"}},{"$f":"IF(F112>=#REF!,\"\",IF(F112<=#REF!,#REF!,#REF!))","v":{"$error":"#REF!"}},{"$f":"IF(F112>#REF!,\"\",PMT(#REF!/12,#REF!,-#REF!))","v":{"$error":"#REF!"}},null,null,null,null,105,{"$f":"IF(N112>#REF!,\"\",$L$7)","v":{"$error":"#REF!"}},{"$f":"IF(N112>=#REF!,\"\",IF(N112<=#REF!,#REF!,#REF!))","v":{"$error":"#REF!"}},{"$f":"IF(N112>#REF!,\"\",#REF!)","v":{"$error":"#REF!"}},null,null,null,null,105,{"$f":"IF(V112>#REF!,\"\",$T$7)","v":{"$error":"#REF!"}},{"$f":"IF(V112>=#REF!,\"\",IF(V112<=#REF!,#REF!,#REF!))","v":{"$error":"#REF!"}},{"$f":"IF(V112>#REF!,\"\",#REF!)","v":{"$error":"#REF!"}},null,null,null,null,null,null,null,105]
[106,{"$f":"IF(A113>=#REF!,\"\",IF(A113<=#REF!,#REF!,#REF!))","v":{"$error":"#REF!"}},{"$f":"IF(A113>=#REF!,\"\",IF(A113<=#REF!,#REF!,#REF!))","v":{"$error":"#REF!"}},{"$f":"IF(A113>#REF!,\"\",#REF!)","v":{"$error":"#REF!"}},null,106,{"$f":"IF(F113>=#REF!,\"\",IF(F113<=#REF!,#REF!,#REF!))","v":{"$error":"#REF!"}},{"$f":"IF(F113>=#REF!,\"\",IF(F113<=#REF!,#REF!,#REF!))","v":{"$error":"#REF!"}},{"$f":"IF(F113>#REF!,\"\",PMT(#REF!/12,#REF!,-#REF!))","v":{"$error":"#REF!"}},null,null,null,null,106,{"$f":"IF(N113>#REF!,\"\",$L$7)","v":{"$error":"#REF!"}},{"$f":"IF(N113>=#REF!,\"\",IF(N113<=#REF!,#REF!,#REF!))","v":{"$error":"#REF!"}},{"$f":"IF(N113>#REF!,\"\",#REF!)","v":{"$error":"#REF!"}},null,null,null,null,106,{"$f":"IF(V113>#REF!,\"\",$T$7)","v":{"$error":"#REF!"}},{"$f":"IF(V113>=#REF!,\"\",IF(V113<=#REF!,#REF!,#REF!))","v":{"$error":"#REF!"}},{"$f":"IF(V113>#REF!,\"\",#REF!)","v":{"$error":"#REF!"}},null,null,null,null,null,null,null,106]
[107,{"$f":"IF(A114>=#REF!,\"\",IF(A114<=#REF!,#REF!,#REF!))","v":{"$error":"#REF!"}},{"$f":"IF(A114>=#REF!,\"\",IF(A114<=#REF!,#REF!,#REF!))","v":{"$error":"#REF!"}},{"$f":"IF(A114>#REF!,\"\",#REF!)","v":{"$error":"#REF!"}},null,107,{"$f":"IF(F114>=#REF!,\"\",IF(F114<=#REF!,#REF!,#REF!))","v":{"$error":"#REF!"}},{"$f":"IF(F114>=#REF!,\"\",IF(F114<=#REF!,#REF!,#REF!))","v":{"$error":"#REF!"}},{"$f":"IF(F114>#REF!,\"\",PMT(#REF!/12,#REF!,-#REF!))","v":{"$error":"#REF!"}},null,null,null,null,107,{"$f":"IF(N114>#REF!,\"\",$L$7)","v":{"$error":"#REF!"}},{"$f":"IF(N114>=#REF!,\"\",IF(N114<=#REF!,#REF!,#REF!))","v":{"$error":"#REF!"}},{"$f":"IF(N114>#REF!,\"\",#REF!)","v":{"$error":"#REF!"}},null,null,null,null,107,{"$f":"IF(V114>#REF!,\"\",$T$7)","v":{"$error":"#REF!"}},{"$f":"IF(V114>=#REF!,\"\",IF(V114<=#REF!,#REF!,#REF!))","v":{"$error":"#REF!"}},{"$f":"IF(V114>#REF!,\"\",#REF!)","v":{"$error":"#REF!"}},null,null,null,null,null,null,null,107]
[108,{"$f":"IF(A115>=#REF!,\"\",IF(A115<=#REF!,#REF!,#REF!))","v":{"$error":"#REF!"}},{"$f":"IF(A115>=#REF!,\"\",IF(A115<=#REF!,#REF!,#REF!))","v":{"$error":"#REF!"}},{"$f":"IF(A115>#REF!,\"\",#REF!)","v":{"$error":"#REF!"}},null,108,{"$f":"IF(F115>=#REF!,\"\",IF(F115<=#REF!,#REF!,#REF!))","v":{"$error":"#REF!"}},{"$f":"IF(F115>=#REF!,\"\",IF(F115<=#REF!,#REF!,#REF!))","v":{"$error":"#REF!"}},{"$f":"IF(F115>#REF!,\"\",PMT(#REF!/12,#REF!,-#REF!))","v":{"$error":"#REF!"}},null,null,null,null,108,{"$f":"IF(N115>#REF!,\"\",$L$7)","v":{"$error":"#REF!"}},{"$f":"IF(N115>=#REF!,\"\",IF(N115<=#REF!,#REF!,#REF!))","v":{"$error":"#REF!"}},{"$f":"IF(N115>#REF!,\"\",#REF!)","v":{"$error":"#REF!"}},null,null,null,null,108,{"$f":"IF(V115>#REF!,\"\",$T$7)","v":{"$error":"#REF!"}},{"$f":"IF(V115>=#REF!,\"\",IF(V115<=#REF!,#REF!,#REF!))","v":{"$error":"#REF!"}},{"$f":"IF(V115>#REF!,\"\",#REF!)","v":{"$error":"#REF!"}},null,null,null,null,null,null,null,108]
[109,{"$f":"IF(A116>=#REF!,\"\",IF(A116<=#REF!,#REF!,#REF!))","v":{"$error":"#REF!"}},{"$f":"IF(A116>=#REF!,\"\",IF(A116<=#REF!,#REF!,#REF!))","v":{"$error":"#REF!"}},{"$f":"IF(A116>#REF!,\"\",#REF!)","v":{"$error":"#REF!"}},null,109,{"$f":"IF(F116>=#REF!,\"\",IF(F116<=#REF!,#REF!,#REF!))","v":{"$error":"#REF!"}},{"$f":"IF(F116>=#REF!,\"\",IF(F116<=#REF!,#REF!,#REF!))","v":{"$error":"#REF!"}},{"$f":"IF(F116>#REF!,\"\",PMT(#REF!/12,#REF!,-#REF!))","v":{"$error":"#REF!"}},null,null,null,null,109,{"$f":"IF(N116>#REF!,\"\",$L$7)","v":{"$error":"#REF!"}},{"$f":"IF(N116>=#REF!,\"\",IF(N116<=#REF!,#REF!,#REF!))","v":{"$error":"#REF!"}},{"$f":"IF(N116>#REF!,\"\",#REF!)","v":{"$error":"#REF!"}},null,null,null,null,109,{"$f":"IF(V116>#REF!,\"\",$T$7)","v":{"$error":"#REF!"}},{"$f":"IF(V116>=#REF!,\"\",IF(V116<=#REF!,#REF!,#REF!))","v":{"$error":"#REF!"}},{"$f":"IF(V116>#REF!,\"\",#REF!)","v":{"$error":"#REF!"}},null,null,null,null,null,null,null,109]
[110,{"$f":"IF(A117>=#REF!,\"\",IF(A117<=#REF!,#REF!,#REF!))","v":{"$error":"#REF!"}},{"$f":"IF(A117>=#REF!,\"\",IF(A117<=#REF!,#REF!,#REF!))","v":{"$error":"#REF!"}},{"$f":"IF(A117>#REF!,\"\",#REF!)","v":{"$error":"#REF!"}},null,110,{"$f":"IF(F117>=#REF!,\"\",IF(F117<=#REF!,#REF!,#REF!))","v":{"$error":"#REF!"}},{"$f":"IF(F117>=#REF!,\"\",IF(F117<=#REF!,#REF!,#REF!))","v":{"$error":"#REF!"}},{"$f":"IF(F117>#REF!,\"\",PMT(#REF!/12,#REF!,-#REF!))","v":{"$error":"#REF!"}},null,null,null,null,110,{"$f":"IF(N117>#REF!,\"\",$L$7)","v":{"$error":"#REF!"}},{"$f":"IF(N117>=#REF!,\"\",IF(N117<=#REF!,#REF!,#REF!))","v":{"$error":"#REF!"}},{"$f":"IF(N117>#REF!,\"\",#REF!)","v":{"$error":"#REF!"}},null,null,null,null,110,{"$f":"IF(V117>#REF!,\"\",$T$7)","v":{"$error":"#REF!"}},{"$f":"IF(V117>=#REF!,\"\",IF(V117<=#REF!,#REF!,#REF!))","v":{"$error":"#REF!"}},{"$f":"IF(V117>#REF!,\"\",#REF!)","v":{"$error":"#REF!"}},null,null,null,null,null,null,null,110]
[111,{"$f":"IF(A118>=#REF!,\"\",IF(A118<=#REF!,#REF!,#REF!))","v":{"$error":"#REF!"}},{"$f":"IF(A118>=#REF!,\"\",IF(A118<=#REF!,#REF!,#REF!))","v":{"$error":"#REF!"}},{"$f":"IF(A118>#REF!,\"\",#REF!)","v":{"$error":"#REF!"}},null,111,{"$f":"IF(F118>=#REF!,\"\",IF(F118<=#REF!,#REF!,#REF!))","v":{"$error":"#REF!"}},{"$f":"IF(F118>=#REF!,\"\",IF(F118<=#REF!,#REF!,#REF!))","v":{"$error":"#REF!"}},{"$f":"IF(F118>#REF!,\"\",PMT(#REF!/12,#REF!,-#REF!))","v":{"$error":"#REF!"}},null,null,null,null,111,{"$f":"IF(N118>#REF!,\"\",$L$7)","v":{"$error":"#REF!"}},{"$f":"IF(N118>=#REF!,\"\",IF(N118<=#REF!,#REF!,#REF!))","v":{"$error":"#REF!"}},{"$f":"IF(N118>#REF!,\"\",#REF!)","v":{"$error":"#REF!"}},null,null,null,null,111,{"$f":"IF(V118>#REF!,\"\",$T$7)","v":{"$error":"#REF!"}},{"$f":"IF(V118>=#REF!,\"\",IF(V118<=#REF!,#REF!,#REF!))","v":{"$error":"#REF!"}},{"$f":"IF(V118>#REF!,\"\",#REF!)","v":{"$error":"#REF!"}},null,null,null,null,null,null,null,111]
[112,{"$f":"IF(A119>=#REF!,\"\",IF(A119<=#REF!,#REF!,#REF!))","v":{"$error":"#REF!"}},{"$f":"IF(A119>=#REF!,\"\",IF(A119<=#REF!,#REF!,#REF!))","v":{"$error":"#REF!"}},{"$f":"IF(A119>#REF!,\"\",#REF!)","v":{"$error":"#REF!"}},null,112,{"$f":"IF(F119>=#REF!,\"\",IF(F119<=#REF!,#REF!,#REF!))","v":{"$error":"#REF!"}},{"$f":"IF(F119>=#REF!,\"\",IF(F119<=#REF!,#REF!,#REF!))","v":{"$error":"#REF!"}},{"$f":"IF(F119>#REF!,\"\",PMT(#REF!/12,#REF!,-#REF!))","v":{"$error":"#REF!"}},null,null,null,null,112,{"$f":"IF(N119>#REF!,\"\",$L$7)","v":{"$error":"#REF!"}},{"$f":"IF(N119>=#REF!,\"\",IF(N119<=#REF!,#REF!,#REF!))","v":{"$error":"#REF!"}},{"$f":"IF(N119>#REF!,\"\",#REF!)","v":{"$error":"#REF!"}},null,null,null,null,112,{"$f":"IF(V119>#REF!,\"\",$T$7)","v":{"$error":"#REF!"}},{"$f":"IF(V119>=#REF!,\"\",IF(V119<=#REF!,#REF!,#REF!))","v":{"$error":"#REF!"}},{"$f":"IF(V119>#REF!,\"\",#REF!)","v":{"$error":"#REF!"}},null,null,null,null,null,null,null,112]
[113,{"$f":"IF(A120>=#REF!,\"\",IF(A120<=#REF!,#REF!,#REF!))","v":{"$error":"#REF!"}},{"$f":"IF(A120>=#REF!,\"\",IF(A120<=#REF!,#REF!,#REF!))","v":{"$error":"#REF!"}},{"$f":"IF(A120>#REF!,\"\",#REF!)","v":{"$error":"#REF!"}},null,113,{"$f":"IF(F120>=#REF!,\"\",IF(F120<=#REF!,#REF!,#REF!))","v":{"$error":"#REF!"}},{"$f":"IF(F120>=#REF!,\"\",IF(F120<=#REF!,#REF!,#REF!))","v":{"$error":"#REF!"}},{"$f":"IF(F120>#REF!,\"\",PMT(#REF!/12,#REF!,-#REF!))","v":{"$error":"#REF!"}},null,null,null,null,113,{"$f":"IF(N120>#REF!,\"\",$L$7)","v":{"$error":"#REF!"}},{"$f":"IF(N120>=#REF!,\"\",IF(N120<=#REF!,#REF!,#REF!))","v":{"$error":"#REF!"}},{"$f":"IF(N120>#REF!,\"\",#REF!)","v":{"$error":"#REF!"}},null,null,null,null,113,{"$f":"IF(V120>#REF!,\"\",$T$7)","v":{"$error":"#REF!"}},{"$f":"IF(V120>=#REF!,\"\",IF(V120<=#REF!,#REF!,#REF!))","v":{"$error":"#REF!"}},{"$f":"IF(V120>#REF!,\"\",#REF!)","v":{"$error":"#REF!"}},null,null,null,null,null,null,null,113]
[114,{"$f":"IF(A121>=#REF!,\"\",IF(A121<=#REF!,#REF!,#REF!))","v":{"$error":"#REF!"}},{"$f":"IF(A121>=#REF!,\"\",IF(A121<=#REF!,#REF!,#REF!))","v":{"$error":"#REF!"}},{"$f":"IF(A121>#REF!,\"\",#REF!)","v":{"$error":"#REF!"}},null,114,{"$f":"IF(F121>=#REF!,\"\",IF(F121<=#REF!,#REF!,#REF!))","v":{"$error":"#REF!"}},{"$f":"IF(F121>=#REF!,\"\",IF(F121<=#REF!,#REF!,#REF!))","v":{"$error":"#REF!"}},{"$f":"IF(F121>#REF!,\"\",PMT(#REF!/12,#REF!,-#REF!))","v":{"$error":"#REF!"}},null,null,null,null,114,{"$f":"IF(N121>#REF!,\"\",$L$7)","v":{"$error":"#REF!"}},{"$f":"IF(N121>=#REF!,\"\",IF(N121<=#REF!,#REF!,#REF!))","v":{"$error":"#REF!"}},{"$f":"IF(N121>#REF!,\"\",#REF!)","v":{"$error":"#REF!"}},null,null,null,null,114,{"$f":"IF(V121>#REF!,\"\",$T$7)","v":{"$error":"#REF!"}},{"$f":"IF(V121>=#REF!,\"\",IF(V121<=#REF!,#REF!,#REF!))","v":{"$error":"#REF!"}},{"$f":"IF(V121>#REF!,\"\",#REF!)","v":{"$error":"#REF!"}},null,null,null,null,null,null,null,114]
[115,{"$f":"IF(A122>=#REF!,\"\",IF(A122<=#REF!,#REF!,#REF!))","v":{"$error":"#REF!"}},{"$f":"IF(A122>=#REF!,\"\",IF(A122<=#REF!,#REF!,#REF!))","v":{"$error":"#REF!"}},{"$f":"IF(A122>#REF!,\"\",#REF!)","v":{"$error":"#REF!"}},null,115,{"$f":"IF(F122>=#REF!,\"\",IF(F122<=#REF!,#REF!,#REF!))","v":{"$error":"#REF!"}},{"$f":"IF(F122>=#REF!,\"\",IF(F122<=#REF!,#REF!,#REF!))","v":{"$error":"#REF!"}},{"$f":"IF(F122>#REF!,\"\",PMT(#REF!/12,#REF!,-#REF!))","v":{"$error":"#REF!"}},null,null,null,null,115,{"$f":"IF(N122>#REF!,\"\",$L$7)","v":{"$error":"#REF!"}},{"$f":"IF(N122>=#REF!,\"\",IF(N122<=#REF!,#REF!,#REF!))","v":{"$error":"#REF!"}},{"$f":"IF(N122>#REF!,\"\",#REF!)","v":{"$error":"#REF!"}},null,null,null,null,115,{"$f":"IF(V122>#REF!,\"\",$T$7)","v":{"$error":"#REF!"}},{"$f":"IF(V122>=#REF!,\"\",IF(V122<=#REF!,#REF!,#REF!))","v":{"$error":"#REF!"}},{"$f":"IF(V122>#REF!,\"\",#REF!)","v":{"$error":"#REF!"}},null,null,null,null,null,null,null,115]
[116,{"$f":"IF(A123>=#REF!,\"\",IF(A123<=#REF!,#REF!,#REF!))","v":{"$error":"#REF!"}},{"$f":"IF(A123>=#REF!,\"\",IF(A123<=#REF!,#REF!,#REF!))","v":{"$error":"#REF!"}},{"$f":"IF(A123>#REF!,\"\",#REF!)","v":{"$error":"#REF!"}},null,116,{"$f":"IF(F123>=#REF!,\"\",IF(F123<=#REF!,#REF!,#REF!))","v":{"$error":"#REF!"}},{"$f":"IF(F123>=#REF!,\"\",IF(F123<=#REF!,#REF!,#REF!))","v":{"$error":"#REF!"}},{"$f":"IF(F123>#REF!,\"\",PMT(#REF!/12,#REF!,-#REF!))","v":{"$error":"#REF!"}},null,null,null,null,116,{"$f":"IF(N123>#REF!,\"\",$L$7)","v":{"$error":"#REF!"}},{"$f":"IF(N123>=#REF!,\"\",IF(N123<=#REF!,#REF!,#REF!))","v":{"$error":"#REF!"}},{"$f":"IF(N123>#REF!,\"\",#REF!)","v":{"$error":"#REF!"}},null,null,null,null,116,{"$f":"IF(V123>#REF!,\"\",$T$7)","v":{"$error":"#REF!"}},{"$f":"IF(V123>=#REF!,\"\",IF(V123<=#REF!,#REF!,#REF!))","v":{"$error":"#REF!"}},{"$f":"IF(V123>#REF!,\"\",#REF!)","v":{"$error":"#REF!"}},null,null,null,null,null,null,null,116]
[117,{"$f":"IF(A124>=#REF!,\"\",IF(A124<=#REF!,#REF!,#REF!))","v":{"$error":"#REF!"}},{"$f":"IF(A124>=#REF!,\"\",IF(A124<=#REF!,#REF!,#REF!))","v":{"$error":"#REF!"}},{"$f":"IF(A124>#REF!,\"\",#REF!)","v":{"$error":"#REF!"}},null,117,{"$f":"IF(F124>=#REF!,\"\",IF(F124<=#REF!,#REF!,#REF!))","v":{"$error":"#REF!"}},{"$f":"IF(F124>=#REF!,\"\",IF(F124<=#REF!,#REF!,#REF!))","v":{"$error":"#REF!"}},{"$f":"IF(F124>#REF!,\"\",PMT(#REF!/12,#REF!,-#REF!))","v":{"$error":"#REF!"}},null,null,null,null,117,{"$f":"IF(N124>#REF!,\"\",$L$7)","v":{"$error":"#REF!"}},{"$f":"IF(N124>=#REF!,\"\",IF(N124<=#REF!,#REF!,#REF!))","v":{"$error":"#REF!"}},{"$f":"IF(N124>#REF!,\"\",#REF!)","v":{"$error":"#REF!"}},null,null,null,null,117,{"$f":"IF(V124>#REF!,\"\",$T$7)","v":{"$error":"#REF!"}},{"$f":"IF(V124>=#REF!,\"\",IF(V124<=#REF!,#REF!,#REF!))","v":{"$error":"#REF!"}},{"$f":"IF(V124>#REF!,\"\",#REF!)","v":{"$error":"#REF!"}},null,null,null,null,null,null,null,117]
[118,{"$f":"IF(A125>=#REF!,\"\",IF(A125<=#REF!,#REF!,#REF!))","v":{"$error":"#REF!"}},{"$f":"IF(A125>=#REF!,\"\",IF(A125<=#REF!,#REF!,#REF!))","v":{"$error":"#REF!"}},{"$f":"IF(A125>#REF!,\"\",#REF!)","v":{"$error":"#REF!"}},null,118,{"$f":"IF(F125>=#REF!,\"\",IF(F125<=#REF!,#REF!,#REF!))","v":{"$error":"#REF!"}},{"$f":"IF(F125>=#REF!,\"\",IF(F125<=#REF!,#REF!,#REF!))","v":{"$error":"#REF!"}},{"$f":"IF(F125>#REF!,\"\",PMT(#REF!/12,#REF!,-#REF!))","v":{"$error":"#REF!"}},null,null,null,null,118,{"$f":"IF(N125>#REF!,\"\",$L$7)","v":{"$error":"#REF!"}},{"$f":"IF(N125>=#REF!,\"\",IF(N125<=#REF!,#REF!,#REF!))","v":{"$error":"#REF!"}},{"$f":"IF(N125>#REF!,\"\",#REF!)","v":{"$error":"#REF!"}},null,null,null,null,118,{"$f":"IF(V125>#REF!,\"\",$T$7)","v":{"$error":"#REF!"}},{"$f":"IF(V125>=#REF!,\"\",IF(V125<=#REF!,#REF!,#REF!))","v":{"$error":"#REF!"}},{"$f":"IF(V125>#REF!,\"\",#REF!)","v":{"$error":"#REF!"}},null,null,null,null,null,null,null,118]
[119,{"$f":"IF(A126>=#REF!,\"\",IF(A126<=#REF!,#REF!,#REF!))","v":{"$error":"#REF!"}},{"$f":"IF(A126>=#REF!,\"\",IF(A126<=#REF!,#REF!,#REF!))","v":{"$error":"#REF!"}},{"$f":"IF(A126>#REF!,\"\",#REF!)","v":{"$error":"#REF!"}},null,119,{"$f":"IF(F126>=#REF!,\"\",IF(F126<=#REF!,#REF!,#REF!))","v":{"$error":"#REF!"}},{"$f":"IF(F126>=#REF!,\"\",IF(F126<=#REF!,#REF!,#REF!))","v":{"$error":"#REF!"}},{"$f":"IF(F126>#REF!,\"\",PMT(#REF!/12,#REF!,-#REF!))","v":{"$error":"#REF!"}},null,null,null,null,119,{"$f":"IF(N126>#REF!,\"\",$L$7)","v":{"$error":"#REF!"}},{"$f":"IF(N126>=#REF!,\"\",IF(N126<=#REF!,#REF!,#REF!))","v":{"$error":"#REF!"}},{"$f":"IF(N126>#REF!,\"\",#REF!)","v":{"$error":"#REF!"}},null,null,null,null,119,{"$f":"IF(V126>#REF!,\"\",$T$7)","v":{"$error":"#REF!"}},{"$f":"IF(V126>=#REF!,\"\",IF(V126<=#REF!,#REF!,#REF!))","v":{"$error":"#REF!"}},{"$f":"IF(V126>#REF!,\"\",#REF!)","v":{"$error":"#REF!"}},null,null,null,null,null,null,null,119]
[120,{"$f":"IF(A127>=#REF!,\"\",IF(A127<=#REF!,#REF!,#REF!))","v":{"$error":"#REF!"}},{"$f":"IF(A127>=#REF!,\"\",IF(A127<=#REF!,#REF!,#REF!))","v":{"$error":"#REF!"}},{"$f":"IF(A127>#REF!,\"\",#REF!)","v":{"$error":"#REF!"}},null,120,{"$f":"IF(F127>=#REF!,\"\",IF(F127<=#REF!,#REF!,#REF!))","v":{"$error":"#REF!"}},{"$f":"IF(F127>=#REF!,\"\",IF(F127<=#REF!,#REF!,#REF!))","v":{"$error":"#REF!"}},{"$f":"IF(F127>#REF!,\"\",PMT(#REF!/12,#REF!,-#REF!))","v":{"$error":"#REF!"}},null,null,null,null,120,{"$f":"IF(N127>#REF!,\"\",$L$7)","v":{"$error":"#REF!"}},{"$f":"IF(N127>=#REF!,\"\",IF(N127<=#REF!,#REF!,#REF!))","v":{"$error":"#REF!"}},{"$f":"IF(N127>#REF!,\"\",#REF!)","v":{"$error":"#REF!"}},null,null,null,null,120,{"$f":"IF(V127>#REF!,\"\",$T$7)","v":{"$error":"#REF!"}},{"$f":"IF(V127>=#REF!,\"\",IF(V127<=#REF!,#REF!,#REF!))","v":{"$error":"#REF!"}},{"$f":"IF(V127>#REF!,\"\",#REF!)","v":{"$error":"#REF!"}},null,null,null,null,null,null,null,120]
[121,{"$f":"IF(A128>=#REF!,\"\",IF(A128<=#REF!,#REF!,#REF!))","v":{"$error":"#REF!"}},{"$f":"IF(A128>=#REF!,\"\",IF(A128<=#REF!,#REF!,#REF!))","v":{"$error":"#REF!"}},{"$f":"IF(A128>#REF!,\"\",#REF!)","v":{"$error":"#REF!"}},null,121,{"$f":"IF(F128>=#REF!,\"\",IF(F128<=#REF!,#REF!,#REF!))","v":{"$error":"#REF!"}},{"$f":"IF(F128>=#REF!,\"\",IF(F128<=#REF!,#REF!,#REF!))","v":{"$error":"#REF!"}},{"$f":"IF(F128>#REF!,\"\",PMT(#REF!/12,#REF!,-#REF!))","v":{"$error":"#REF!"}},null,null,null,null,121,{"$f":"IF(N128>#REF!,\"\",$L$7)","v":{"$error":"#REF!"}},{"$f":"IF(N128>=#REF!,\"\",IF(N128<=#REF!,#REF!,#REF!))","v":{"$error":"#REF!"}},{"$f":"IF(N128>#REF!,\"\",#REF!)","v":{"$error":"#REF!"}},null,null,null,null,121,{"$f":"IF(V128>#REF!,\"\",$T$7)","v":{"$error":"#REF!"}},{"$f":"IF(V128>=#REF!,\"\",IF(V128<=#REF!,#REF!,#REF!))","v":{"$error":"#REF!"}},{"$f":"IF(V128>#REF!,\"\",#REF!)","v":{"$error":"#REF!"}},null,null,null,null,null,null,null,121]
[122,{"$f":"IF(A129>=#REF!,\"\",IF(A129<=#REF!,#REF!,#REF!))","v":{"$error":"#REF!"}},{"$f":"IF(A129>=#REF!,\"\",IF(A129<=#REF!,#REF!,#REF!))","v":{"$error":"#REF!"}},{"$f":"IF(A129>#REF!,\"\",#REF!)","v":{"$error":"#REF!"}},null,122,{"$f":"IF(F129>=#REF!,\"\",IF(F129<=#REF!,#REF!,#REF!))","v":{"$error":"#REF!"}},{"$f":"IF(F129>=#REF!,\"\",IF(F129<=#REF!,#REF!,#REF!))","v":{"$error":"#REF!"}},{"$f":"IF(F129>#REF!,\"\",PMT(#REF!/12,#REF!,-#REF!))","v":{"$error":"#REF!"}},null,null,null,null,122,{"$f":"IF(N129>#REF!,\"\",$L$7)","v":{"$error":"#REF!"}},{"$f":"IF(N129>=#REF!,\"\",IF(N129<=#REF!,#REF!,#REF!))","v":{"$error":"#REF!"}},{"$f":"IF(N129>#REF!,\"\",#REF!)","v":{"$error":"#REF!"}},null,null,null,null,122,{"$f":"IF(V129>#REF!,\"\",$T$7)","v":{"$error":"#REF!"}},{"$f":"IF(V129>=#REF!,\"\",IF(V129<=#REF!,#REF!,#REF!))","v":{"$error":"#REF!"}},{"$f":"IF(V129>#REF!,\"\",#REF!)","v":{"$error":"#REF!"}},null,null,null,null,null,null,null,122]
[123,{"$f":"IF(A130>=#REF!,\"\",IF(A130<=#REF!,#REF!,#REF!))","v":{"$error":"#REF!"}},{"$f":"IF(A130>=#REF!,\"\",IF(A130<=#REF!,#REF!,#REF!))","v":{"$error":"#REF!"}},{"$f":"IF(A130>#REF!,\"\",#REF!)","v":{"$error":"#REF!"}},null,123,{"$f":"IF(F130>=#REF!,\"\",IF(F130<=#REF!,#REF!,#REF!))","v":{"$error":"#REF!"}},{"$f":"IF(F130>=#REF!,\"\",IF(F130<=#REF!,#REF!,#REF!))","v":{"$error":"#REF!"}},{"$f":"IF(F130>#REF!,\"\",PMT(#REF!/12,#REF!,-#REF!))","v":{"$error":"#REF!"}},null,null,null,null,123,{"$f":"IF(N130>#REF!,\"\",$L$7)","v":{"$error":"#REF!"}},{"$f":"IF(N130>=#REF!,\"\",IF(N130<=#REF!,#REF!,#REF!))","v":{"$error":"#REF!"}},{"$f":"IF(N130>#REF!,\"\",#REF!)","v":{"$error":"#REF!"}},null,null,null,null,123,{"$f":"IF(V130>#REF!,\"\",$T$7)","v":{"$error":"#REF!"}},{"$f":"IF(V130>=#REF!,\"\",IF(V130<=#REF!,#REF!,#REF!))","v":{"$error":"#REF!"}},{"$f":"IF(V130>#REF!,\"\",#REF!)","v":{"$error":"#REF!"}},null,null,null,null,null,null,null,123]
[124,{"$f":"IF(A131>=#REF!,\"\",IF(A131<=#REF!,#REF!,#REF!))","v":{"$error":"#REF!"}},{"$f":"IF(A131>=#REF!,\"\",IF(A131<=#REF!,#REF!,#REF!))","v":{"$error":"#REF!"}},{"$f":"IF(A131>#REF!,\"\",#REF!)","v":{"$error":"#REF!"}},null,124,{"$f":"IF(F131>=#REF!,\"\",IF(F131<=#REF!,#REF!,#REF!))","v":{"$error":"#REF!"}},{"$f":"IF(F131>=#REF!,\"\",IF(F131<=#REF!,#REF!,#REF!))","v":{"$error":"#REF!"}},{"$f":"IF(F131>#REF!,\"\",PMT(#REF!/12,#REF!,-#REF!))","v":{"$error":"#REF!"}},null,null,null,null,124,{"$f":"IF(N131>#REF!,\"\",$L$7)","v":{"$error":"#REF!"}},{"$f":"IF(N131>=#REF!,\"\",IF(N131<=#REF!,#REF!,#REF!))","v":{"$error":"#REF!"}},{"$f":"IF(N131>#REF!,\"\",#REF!)","v":{"$error":"#REF!"}},null,null,null,null,124,{"$f":"IF(V131>#REF!,\"\",$T$7)","v":{"$error":"#REF!"}},{"$f":"IF(V131>=#REF!,\"\",IF(V131<=#REF!,#REF!,#REF!))","v":{"$error":"#REF!"}},{"$f":"IF(V131>#REF!,\"\",#REF!)","v":{"$error":"#REF!"}},null,null,null,null,null,null,null,124]
[125,{"$f":"IF(A132>=#REF!,\"\",IF(A132<=#REF!,#REF!,#REF!))","v":{"$error":"#REF!"}},{"$f":"IF(A132>=#REF!,\"\",IF(A132<=#REF!,#REF!,#REF!))","v":{"$error":"#REF!"}},{"$f":"IF(A132>#REF!,\"\",#REF!)","v":{"$error":"#REF!"}},null,125,{"$f":"IF(F132>=#REF!,\"\",IF(F132<=#REF!,#REF!,#REF!))","v":{"$error":"#REF!"}},{"$f":"IF(F132>=#REF!,\"\",IF(F132<=#REF!,#REF!,#REF!))","v":{"$error":"#REF!"}},{"$f":"IF(F132>#REF!,\"\",PMT(#REF!/12,#REF!,-#REF!))","v":{"$error":"#REF!"}},null,null,null,null,125,{"$f":"IF(N132>#REF!,\"\",$L$7)","v":{"$error":"#REF!"}},{"$f":"IF(N132>=#REF!,\"\",IF(N132<=#REF!,#REF!,#REF!))","v":{"$error":"#REF!"}},{"$f":"IF(N132>#REF!,\"\",#REF!)","v":{"$error":"#REF!"}},null,null,null,null,125,{"$f":"IF(V132>#REF!,\"\",$T$7)","v":{"$error":"#REF!"}},{"$f":"IF(V132>=#REF!,\"\",IF(V132<=#REF!,#REF!,#REF!))","v":{"$error":"#REF!"}},{"$f":"IF(V132>#REF!,\"\",#REF!)","v":{"$error":"#REF!"}},null,null,null,null,null,null,null,125]
[126,{"$f":"IF(A133>=#REF!,\"\",IF(A133<=#REF!,#REF!,#REF!))","v":{"$error":"#REF!"}},{"$f":"IF(A133>=#REF!,\"\",IF(A133<=#REF!,#REF!,#REF!))","v":{"$error":"#REF!"}},{"$f":"IF(A133>#REF!,\"\",#REF!)","v":{"$error":"#REF!"}},null,126,{"$f":"IF(F133>=#REF!,\"\",IF(F133<=#REF!,#REF!,#REF!))","v":{"$error":"#REF!"}},{"$f":"IF(F133>=#REF!,\"\",IF(F133<=#REF!,#REF!,#REF!))","v":{"$error":"#REF!"}},{"$f":"IF(F133>#REF!,\"\",PMT(#REF!/12,#REF!,-#REF!))","v":{"$error":"#REF!"}},null,null,null,null,126,{"$f":"IF(N133>#REF!,\"\",$L$7)","v":{"$error":"#REF!"}},{"$f":"IF(N133>=#REF!,\"\",IF(N133<=#REF!,#REF!,#REF!))","v":{"$error":"#REF!"}},{"$f":"IF(N133>#REF!,\"\",#REF!)","v":{"$error":"#REF!"}},null,null,null,null,126,{"$f":"IF(V133>#REF!,\"\",$T$7)","v":{"$error":"#REF!"}},{"$f":"IF(V133>=#REF!,\"\",IF(V133<=#REF!,#REF!,#REF!))","v":{"$error":"#REF!"}},{"$f":"IF(V133>#REF!,\"\",#REF!)","v":{"$error":"#REF!"}},null,null,null,null,null,null,null,126]
[127,{"$f":"IF(A134>=#REF!,\"\",IF(A134<=#REF!,#REF!,#REF!))","v":{"$error":"#REF!"}},{"$f":"IF(A134>=#REF!,\"\",IF(A134<=#REF!,#REF!,#REF!))","v":{"$error":"#REF!"}},{"$f":"IF(A134>#REF!,\"\",#REF!)","v":{"$error":"#REF!"}},null,127,{"$f":"IF(F134>=#REF!,\"\",IF(F134<=#REF!,#REF!,#REF!))","v":{"$error":"#REF!"}},{"$f":"IF(F134>=#REF!,\"\",IF(F134<=#REF!,#REF!,#REF!))","v":{"$error":"#REF!"}},{"$f":"IF(F134>#REF!,\"\",PMT(#REF!/12,#REF!,-#REF!))","v":{"$error":"#REF!"}},null,null,null,null,127,{"$f":"IF(N134>#REF!,\"\",$L$7)","v":{"$error":"#REF!"}},{"$f":"IF(N134>=#REF!,\"\",IF(N134<=#REF!,#REF!,#REF!))","v":{"$error":"#REF!"}},{"$f":"IF(N134>#REF!,\"\",#REF!)","v":{"$error":"#REF!"}},null,null,null,null,127,{"$f":"IF(V134>#REF!,\"\",$T$7)","v":{"$error":"#REF!"}},{"$f":"IF(V134>=#REF!,\"\",IF(V134<=#REF!,#REF!,#REF!))","v":{"$error":"#REF!"}},{"$f":"IF(V134>#REF!,\"\",#REF!)","v":{"$error":"#REF!"}},null,null,null,null,null,null,null,127]
[128,{"$f":"IF(A135>=#REF!,\"\",IF(A135<=#REF!,#REF!,#REF!))","v":{"$error":"#REF!"}},{"$f":"IF(A135>=#REF!,\"\",IF(A135<=#REF!,#REF!,#REF!))","v":{"$error":"#REF!"}},{"$f":"IF(A135>#REF!,\"\",#REF!)","v":{"$error":"#REF!"}},null,128,{"$f":"IF(F135>=#REF!,\"\",IF(F135<=#REF!,#REF!,#REF!))","v":{"$error":"#REF!"}},{"$f":"IF(F135>=#REF!,\"\",IF(F135<=#REF!,#REF!,#REF!))","v":{"$error":"#REF!"}},{"$f":"IF(F135>#REF!,\"\",PMT(#REF!/12,#REF!,-#REF!))","v":{"$error":"#REF!"}},null,null,null,null,128,{"$f":"IF(N135>#REF!,\"\",$L$7)","v":{"$error":"#REF!"}},{"$f":"IF(N135>=#REF!,\"\",IF(N135<=#REF!,#REF!,#REF!))","v":{"$error":"#REF!"}},{"$f":"IF(N135>#REF!,\"\",#REF!)","v":{"$error":"#REF!"}},null,null,null,null,128,{"$f":"IF(V135>#REF!,\"\",$T$7)","v":{"$error":"#REF!"}},{"$f":"IF(V135>=#REF!,\"\",IF(V135<=#REF!,#REF!,#REF!))","v":{"$error":"#REF!"}},{"$f":"IF(V135>#REF!,\"\",#REF!)","v":{"$error":"#REF!"}},null,null,null,null,null,null,null,128]
[129,{"$f":"IF(A136>=#REF!,\"\",IF(A136<=#REF!,#REF!,#REF!))","v":{"$error":"#REF!"}},{"$f":"IF(A136>=#REF!,\"\",IF(A136<=#REF!,#REF!,#REF!))","v":{"$error":"#REF!"}},{"$f":"IF(A136>#REF!,\"\",#REF!)","v":{"$error":"#REF!"}},null,129,{"$f":"IF(F136>=#REF!,\"\",IF(F136<=#REF!,#REF!,#REF!))","v":{"$error":"#REF!"}},{"$f":"IF(F136>=#REF!,\"\",IF(F136<=#REF!,#REF!,#REF!))","v":{"$error":"#REF!"}},{"$f":"IF(F136>#REF!,\"\",PMT(#REF!/12,#REF!,-#REF!))","v":{"$error":"#REF!"}},null,null,null,null,129,{"$f":"IF(N136>#REF!,\"\",$L$7)","v":{"$error":"#REF!"}},{"$f":"IF(N136>=#REF!,\"\",IF(N136<=#REF!,#REF!,#REF!))","v":{"$error":"#REF!"}},{"$f":"IF(N136>#REF!,\"\",#REF!)","v":{"$error":"#REF!"}},null,null,null,null,129,{"$f":"IF(V136>#REF!,\"\",$T$7)","v":{"$error":"#REF!"}},{"$f":"IF(V136>=#REF!,\"\",IF(V136<=#REF!,#REF!,#REF!))","v":{"$error":"#REF!"}},{"$f":"IF(V136>#REF!,\"\",#REF!)","v":{"$error":"#REF!"}},null,null,null,null,null,null,null,129]
[130,{"$f":"IF(A137>=#REF!,\"\",IF(A137<=#REF!,#REF!,#REF!))","v":{"$error":"#REF!"}},{"$f":"IF(A137>=#REF!,\"\",IF(A137<=#REF!,#REF!,#REF!))","v":{"$error":"#REF!"}},{"$f":"IF(A137>#REF!,\"\",#REF!)","v":{"$error":"#REF!"}},null,130,{"$f":"IF(F137>=#REF!,\"\",IF(F137<=#REF!,#REF!,#REF!))","v":{"$error":"#REF!"}},{"$f":"IF(F137>=#REF!,\"\",IF(F137<=#REF!,#REF!,#REF!))","v":{"$error":"#REF!"}},{"$f":"IF(F137>#REF!,\"\",PMT(#REF!/12,#REF!,-#REF!))","v":{"$error":"#REF!"}},null,null,null,null,130,{"$f":"IF(N137>#REF!,\"\",$L$7)","v":{"$error":"#REF!"}},{"$f":"IF(N137>=#REF!,\"\",IF(N137<=#REF!,#REF!,#REF!))","v":{"$error":"#REF!"}},{"$f":"IF(N137>#REF!,\"\",#REF!)","v":{"$error":"#REF!"}},null,null,null,null,130,{"$f":"IF(V137>#REF!,\"\",$T$7)","v":{"$error":"#REF!"}},{"$f":"IF(V137>=#REF!,\"\",IF(V137<=#REF!,#REF!,#REF!))","v":{"$error":"#REF!"}},{"$f":"IF(V137>#REF!,\"\",#REF!)","v":{"$error":"#REF!"}},null,null,null,null,null,null,null,130]
[131,{"$f":"IF(A138>=#REF!,\"\",IF(A138<=#REF!,#REF!,#REF!))","v":{"$error":"#REF!"}},{"$f":"IF(A138>=#REF!,\"\",IF(A138<=#REF!,#REF!,#REF!))","v":{"$error":"#REF!"}},{"$f":"IF(A138>#REF!,\"\",#REF!)","v":{"$error":"#REF!"}},null,131,{"$f":"IF(F138>=#REF!,\"\",IF(F138<=#REF!,#REF!,#REF!))","v":{"$error":"#REF!"}},{"$f":"IF(F138>=#REF!,\"\",IF(F138<=#REF!,#REF!,#REF!))","v":{"$error":"#REF!"}},{"$f":"IF(F138>#REF!,\"\",PMT(#REF!/12,#REF!,-#REF!))","v":{"$error":"#REF!"}},null,null,null,null,131,{"$f":"IF(N138>#REF!,\"\",$L$7)","v":{"$error":"#REF!"}},{"$f":"IF(N138>=#REF!,\"\",IF(N138<=#REF!,#REF!,#REF!))","v":{"$error":"#REF!"}},{"$f":"IF(N138>#REF!,\"\",#REF!)","v":{"$error":"#REF!"}},null,null,null,null,131,{"$f":"IF(V138>#REF!,\"\",$T$7)","v":{"$error":"#REF!"}},{"$f":"IF(V138>=#REF!,\"\",IF(V138<=#REF!,#REF!,#REF!))","v":{"$error":"#REF!"}},{"$f":"IF(V138>#REF!,\"\",#REF!)","v":{"$error":"#REF!"}},null,null,null,null,null,null,null,131]
[132,{"$f":"IF(A139>=#REF!,\"\",IF(A139<=#REF!,#REF!,#REF!))","v":{"$error":"#REF!"}},{"$f":"IF(A139>=#REF!,\"\",IF(A139<=#REF!,#REF!,#REF!))","v":{"$error":"#REF!"}},{"$f":"IF(A139>#REF!,\"\",#REF!)","v":{"$error":"#REF!"}},null,132,{"$f":"IF(F139>=#REF!,\"\",IF(F139<=#REF!,#REF!,#REF!))","v":{"$error":"#REF!"}},{"$f":"IF(F139>=#REF!,\"\",IF(F139<=#REF!,#REF!,#REF!))","v":{"$error":"#REF!"}},{"$f":"IF(F139>#REF!,\"\",PMT(#REF!/12,#REF!,-#REF!))","v":{"$error":"#REF!"}},null,null,null,null,132,{"$f":"IF(N139>#REF!,\"\",$L$7)","v":{"$error":"#REF!"}},{"$f":"IF(N139>=#REF!,\"\",IF(N139<=#REF!,#REF!,#REF!))","v":{"$error":"#REF!"}},{"$f":"IF(N139>#REF!,\"\",#REF!)","v":{"$error":"#REF!"}},null,null,null,null,132,{"$f":"IF(V139>#REF!,\"\",$T$7)","v":{"$error":"#REF!"}},{"$f":"IF(V139>=#REF!,\"\",IF(V139<=#REF!,#REF!,#REF!))","v":{"$error":"#REF!"}},{"$f":"IF(V139>#REF!,\"\",#REF!)","v":{"$error":"#REF!"}},null,null,null,null,null,null,null,132]
[133,{"$f":"IF(A140>=#REF!,\"\",IF(A140<=#REF!,#REF!,#REF!))","v":{"$error":"#REF!"}},{"$f":"IF(A140>=#REF!,\"\",IF(A140<=#REF!,#REF!,#REF!))","v":{"$error":"#REF!"}},{"$f":"IF(A140>#REF!,\"\",#REF!)","v":{"$error":"#REF!"}},null,133,{"$f":"IF(F140>=#REF!,\"\",IF(F140<=#REF!,#REF!,#REF!))","v":{"$error":"#REF!"}},{"$f":"IF(F140>=#REF!,\"\",IF(F140<=#REF!,#REF!,#REF!))","v":{"$error":"#REF!"}},{"$f":"IF(F140>#REF!,\"\",PMT(#REF!/12,#REF!,-#REF!))","v":{"$error":"#REF!"}},null,null,null,null,133,{"$f":"IF(N140>#REF!,\"\",$L$7)","v":{"$error":"#REF!"}},{"$f":"IF(N140>=#REF!,\"\",IF(N140<=#REF!,#REF!,#REF!))","v":{"$error":"#REF!"}},{"$f":"IF(N140>#REF!,\"\",#REF!)","v":{"$error":"#REF!"}},null,null,null,null,133,{"$f":"IF(V140>#REF!,\"\",$T$7)","v":{"$error":"#REF!"}},{"$f":"IF(V140>=#REF!,\"\",IF(V140<=#REF!,#REF!,#REF!))","v":{"$error":"#REF!"}},{"$f":"IF(V140>#REF!,\"\",#REF!)","v":{"$error":"#REF!"}},null,null,null,null,null,null,null,133]
[134,{"$f":"IF(A141>=#REF!,\"\",IF(A141<=#REF!,#REF!,#REF!))","v":{"$error":"#REF!"}},{"$f":"IF(A141>=#REF!,\"\",IF(A141<=#REF!,#REF!,#REF!))","v":{"$error":"#REF!"}},{"$f":"IF(A141>#REF!,\"\",#REF!)","v":{"$error":"#REF!"}},null,134,{"$f":"IF(F141>=#REF!,\"\",IF(F141<=#REF!,#REF!,#REF!))","v":{"$error":"#REF!"}},{"$f":"IF(F141>=#REF!,\"\",IF(F141<=#REF!,#REF!,#REF!))","v":{"$error":"#REF!"}},{"$f":"IF(F141>#REF!,\"\",PMT(#REF!/12,#REF!,-#REF!))","v":{"$error":"#REF!"}},null,null,null,null,134,{"$f":"IF(N141>#REF!,\"\",$L$7)","v":{"$error":"#REF!"}},{"$f":"IF(N141>=#REF!,\"\",IF(N141<=#REF!,#REF!,#REF!))","v":{"$error":"#REF!"}},{"$f":"IF(N141>#REF!,\"\",#REF!)","v":{"$error":"#REF!"}},null,null,null,null,134,{"$f":"IF(V141>#REF!,\"\",$T$7)","v":{"$error":"#REF!"}},{"$f":"IF(V141>=#REF!,\"\",IF(V141<=#REF!,#REF!,#REF!))","v":{"$error":"#REF!"}},{"$f":"IF(V141>#REF!,\"\",#REF!)","v":{"$error":"#REF!"}},null,null,null,null,null,null,null,134]
[135,{"$f":"IF(A142>=#REF!,\"\",IF(A142<=#REF!,#REF!,#REF!))","v":{"$error":"#REF!"}},{"$f":"IF(A142>=#REF!,\"\",IF(A142<=#REF!,#REF!,#REF!))","v":{"$error":"#REF!"}},{"$f":"IF(A142>#REF!,\"\",#REF!)","v":{"$error":"#REF!"}},null,135,{"$f":"IF(F142>=#REF!,\"\",IF(F142<=#REF!,#REF!,#REF!))","v":{"$error":"#REF!"}},{"$f":"IF(F142>=#REF!,\"\",IF(F142<=#REF!,#REF!,#REF!))","v":{"$error":"#REF!"}},{"$f":"IF(F142>#REF!,\"\",PMT(#REF!/12,#REF!,-#REF!))","v":{"$error":"#REF!"}},null,null,null,null,135,{"$f":"IF(N142>#REF!,\"\",$L$7)","v":{"$error":"#REF!"}},{"$f":"IF(N142>=#REF!,\"\",IF(N142<=#REF!,#REF!,#REF!))","v":{"$error":"#REF!"}},{"$f":"IF(N142>#REF!,\"\",#REF!)","v":{"$error":"#REF!"}},null,null,null,null,135,{"$f":"IF(V142>#REF!,\"\",$T$7)","v":{"$error":"#REF!"}},{"$f":"IF(V142>=#REF!,\"\",IF(V142<=#REF!,#REF!,#REF!))","v":{"$error":"#REF!"}},{"$f":"IF(V142>#REF!,\"\",#REF!)","v":{"$error":"#REF!"}},null,null,null,null,null,null,null,135]
[136,{"$f":"IF(A143>=#REF!,\"\",IF(A143<=#REF!,#REF!,#REF!))","v":{"$error":"#REF!"}},{"$f":"IF(A143>=#REF!,\"\",IF(A143<=#REF!,#REF!,#REF!))","v":{"$error":"#REF!"}},{"$f":"IF(A143>#REF!,\"\",#REF!)","v":{"$error":"#REF!"}},null,136,{"$f":"IF(F143>=#REF!,\"\",IF(F143<=#REF!,#REF!,#REF!))","v":{"$error":"#REF!"}},{"$f":"IF(F143>=#REF!,\"\",IF(F143<=#REF!,#REF!,#REF!))","v":{"$error":"#REF!"}},{"$f":"IF(F143>#REF!,\"\",PMT(#REF!/12,#REF!,-#REF!))","v":{"$error":"#REF!"}},null,null,null,null,136,{"$f":"IF(N143>#REF!,\"\",$L$7)","v":{"$error":"#REF!"}},{"$f":"IF(N143>=#REF!,\"\",IF(N143<=#REF!,#REF!,#REF!))","v":{"$error":"#REF!"}},{"$f":"IF(N143>#REF!,\"\",#REF!)","v":{"$error":"#REF!"}},null,null,null,null,136,{"$f":"IF(V143>#REF!,\"\",$T$7)","v":{"$error":"#REF!"}},{"$f":"IF(V143>=#REF!,\"\",IF(V143<=#REF!,#REF!,#REF!))","v":{"$error":"#REF!"}},{"$f":"IF(V143>#REF!,\"\",#REF!)","v":{"$error":"#REF!"}},null,null,null,null,null,null,null,136]
[137,{"$f":"IF(A144>=#REF!,\"\",IF(A144<=#REF!,#REF!,#REF!))","v":{"$error":"#REF!"}},{"$f":"IF(A144>=#REF!,\"\",IF(A144<=#REF!,#REF!,#REF!))","v":{"$error":"#REF!"}},{"$f":"IF(A144>#REF!,\"\",#REF!)","v":{"$error":"#REF!"}},null,137,{"$f":"IF(F144>=#REF!,\"\",IF(F144<=#REF!,#REF!,#REF!))","v":{"$error":"#REF!"}},{"$f":"IF(F144>=#REF!,\"\",IF(F144<=#REF!,#REF!,#REF!))","v":{"$error":"#REF!"}},{"$f":"IF(F144>#REF!,\"\",PMT(#REF!/12,#REF!,-#REF!))","v":{"$error":"#REF!"}},null,null,null,null,137,{"$f":"IF(N144>#REF!,\"\",$L$7)","v":{"$error":"#REF!"}},{"$f":"IF(N144>=#REF!,\"\",IF(N144<=#REF!,#REF!,#REF!))","v":{"$error":"#REF!"}},{"$f":"IF(N144>#REF!,\"\",#REF!)","v":{"$error":"#REF!"}},null,null,null,null,137,{"$f":"IF(V144>#REF!,\"\",$T$7)","v":{"$error":"#REF!"}},{"$f":"IF(V144>=#REF!,\"\",IF(V144<=#REF!,#REF!,#REF!))","v":{"$error":"#REF!"}},{"$f":"IF(V144>#REF!,\"\",#REF!)","v":{"$error":"#REF!"}},null,null,null,null,null,null,null,137]
[138,{"$f":"IF(A145>=#REF!,\"\",IF(A145<=#REF!,#REF!,#REF!))","v":{"$error":"#REF!"}},{"$f":"IF(A145>=#REF!,\"\",IF(A145<=#REF!,#REF!,#REF!))","v":{"$error":"#REF!"}},{"$f":"IF(A145>#REF!,\"\",#REF!)","v":{"$error":"#REF!"}},null,138,{"$f":"IF(F145>=#REF!,\"\",IF(F145<=#REF!,#REF!,#REF!))","v":{"$error":"#REF!"}},{"$f":"IF(F145>=#REF!,\"\",IF(F145<=#REF!,#REF!,#REF!))","v":{"$error":"#REF!"}},{"$f":"IF(F145>#REF!,\"\",PMT(#REF!/12,#REF!,-#REF!))","v":{"$error":"#REF!"}},null,null,null,null,138,{"$f":"IF(N145>#REF!,\"\",$L$7)","v":{"$error":"#REF!"}},{"$f":"IF(N145>=#REF!,\"\",IF(N145<=#REF!,#REF!,#REF!))","v":{"$error":"#REF!"}},{"$f":"IF(N145>#REF!,\"\",#REF!)","v":{"$error":"#REF!"}},null,null,null,null,138,{"$f":"IF(V145>#REF!,\"\",$T$7)","v":{"$error":"#REF!"}},{"$f":"IF(V145>=#REF!,\"\",IF(V145<=#REF!,#REF!,#REF!))","v":{"$error":"#REF!"}},{"$f":"IF(V145>#REF!,\"\",#REF!)","v":{"$error":"#REF!"}},null,null,null,null,null,null,null,138]
[139,{"$f":"IF(A146>=#REF!,\"\",IF(A146<=#REF!,#REF!,#REF!))","v":{"$error":"#REF!"}},{"$f":"IF(A146>=#REF!,\"\",IF(A146<=#REF!,#REF!,#REF!))","v":{"$error":"#REF!"}},{"$f":"IF(A146>#REF!,\"\",#REF!)","v":{"$error":"#REF!"}},null,139,{"$f":"IF(F146>=#REF!,\"\",IF(F146<=#REF!,#REF!,#REF!))","v":{"$error":"#REF!"}},{"$f":"IF(F146>=#REF!,\"\",IF(F146<=#REF!,#REF!,#REF!))","v":{"$error":"#REF!"}},{"$f":"IF(F146>#REF!,\"\",PMT(#REF!/12,#REF!,-#REF!))","v":{"$error":"#REF!"}},null,null,null,null,139,{"$f":"IF(N146>#REF!,\"\",$L$7)","v":{"$error":"#REF!"}},{"$f":"IF(N146>=#REF!,\"\",IF(N146<=#REF!,#REF!,#REF!))","v":{"$error":"#REF!"}},{"$f":"IF(N146>#REF!,\"\",#REF!)","v":{"$error":"#REF!"}},null,null,null,null,139,{"$f":"IF(V146>#REF!,\"\",$T$7)","v":{"$error":"#REF!"}},{"$f":"IF(V146>=#REF!,\"\",IF(V146<=#REF!,#REF!,#REF!))","v":{"$error":"#REF!"}},{"$f":"IF(V146>#REF!,\"\",#REF!)","v":{"$error":"#REF!"}},null,null,null,null,null,null,null,139]
[140,{"$f":"IF(A147>=#REF!,\"\",IF(A147<=#REF!,#REF!,#REF!))","v":{"$error":"#REF!"}},{"$f":"IF(A147>=#REF!,\"\",IF(A147<=#REF!,#REF!,#REF!))","v":{"$error":"#REF!"}},{"$f":"IF(A147>#REF!,\"\",#REF!)","v":{"$error":"#REF!"}},null,140,{"$f":"IF(F147>=#REF!,\"\",IF(F147<=#REF!,#REF!,#REF!))","v":{"$error":"#REF!"}},{"$f":"IF(F147>=#REF!,\"\",IF(F147<=#REF!,#REF!,#REF!))","v":{"$error":"#REF!"}},{"$f":"IF(F147>#REF!,\"\",PMT(#REF!/12,#REF!,-#REF!))","v":{"$error":"#REF!"}},null,null,null,null,140,{"$f":"IF(N147>#REF!,\"\",$L$7)","v":{"$error":"#REF!"}},{"$f":"IF(N147>=#REF!,\"\",IF(N147<=#REF!,#REF!,#REF!))","v":{"$error":"#REF!"}},{"$f":"IF(N147>#REF!,\"\",#REF!)","v":{"$error":"#REF!"}},null,null,null,null,140,{"$f":"IF(V147>#REF!,\"\",$T$7)","v":{"$error":"#REF!"}},{"$f":"IF(V147>=#REF!,\"\",IF(V147<=#REF!,#REF!,#REF!))","v":{"$error":"#REF!"}},{"$f":"IF(V147>#REF!,\"\",#REF!)","v":{"$error":"#REF!"}},null,null,null,null,null,null,null,140]
[141,{"$f":"IF(A148>=#REF!,\"\",IF(A148<=#REF!,#REF!,#REF!))","v":{"$error":"#REF!"}},{"$f":"IF(A148>=#REF!,\"\",IF(A148<=#REF!,#REF!,#REF!))","v":{"$error":"#REF!"}},{"$f":"IF(A148>#REF!,\"\",#REF!)","v":{"$error":"#REF!"}},null,141,{"$f":"IF(F148>=#REF!,\"\",IF(F148<=#REF!,#REF!,#REF!))","v":{"$error":"#REF!"}},{"$f":"IF(F148>=#REF!,\"\",IF(F148<=#REF!,#REF!,#REF!))","v":{"$error":"#REF!"}},{"$f":"IF(F148>#REF!,\"\",PMT(#REF!/12,#REF!,-#REF!))","v":{"$error":"#REF!"}},null,null,null,null,141,{"$f":"IF(N148>#REF!,\"\",$L$7)","v":{"$error":"#REF!"}},{"$f":"IF(N148>=#REF!,\"\",IF(N148<=#REF!,#REF!,#REF!))","v":{"$error":"#REF!"}},{"$f":"IF(N148>#REF!,\"\",#REF!)","v":{"$error":"#REF!"}},null,null,null,null,141,{"$f":"IF(V148>#REF!,\"\",$T$7)","v":{"$error":"#REF!"}},{"$f":"IF(V148>=#REF!,\"\",IF(V148<=#REF!,#REF!,#REF!))","v":{"$error":"#REF!"}},{"$f":"IF(V148>#REF!,\"\",#REF!)","v":{"$error":"#REF!"}},null,null,null,null,null,null,null,141]
[142,{"$f":"IF(A149>=#REF!,\"\",IF(A149<=#REF!,#REF!,#REF!))","v":{"$error":"#REF!"}},{"$f":"IF(A149>=#REF!,\"\",IF(A149<=#REF!,#REF!,#REF!))","v":{"$error":"#REF!"}},{"$f":"IF(A149>#REF!,\"\",#REF!)","v":{"$error":"#REF!"}},null,142,{"$f":"IF(F149>=#REF!,\"\",IF(F149<=#REF!,#REF!,#REF!))","v":{"$error":"#REF!"}},{"$f":"IF(F149>=#REF!,\"\",IF(F149<=#REF!,#REF!,#REF!))","v":{"$error":"#REF!"}},{"$f":"IF(F149>#REF!,\"\",PMT(#REF!/12,#REF!,-#REF!))","v":{"$error":"#REF!"}},null,null,null,null,142,{"$f":"IF(N149>#REF!,\"\",$L$7)","v":{"$error":"#REF!"}},{"$f":"IF(N149>=#REF!,\"\",IF(N149<=#REF!,#REF!,#REF!))","v":{"$error":"#REF!"}},{"$f":"IF(N149>#REF!,\"\",#REF!)","v":{"$error":"#REF!"}},null,null,null,null,142,{"$f":"IF(V149>#REF!,\"\",$T$7)","v":{"$error":"#REF!"}},{"$f":"IF(V149>=#REF!,\"\",IF(V149<=#REF!,#REF!,#REF!))","v":{"$error":"#REF!"}},{"$f":"IF(V149>#REF!,\"\",#REF!)","v":{"$error":"#REF!"}},null,null,null,null,null,null,null,142]
[143,{"$f":"IF(A150>=#REF!,\"\",IF(A150<=#REF!,#REF!,#REF!))","v":{"$error":"#REF!"}},{"$f":"IF(A150>=#REF!,\"\",IF(A150<=#REF!,#REF!,#REF!))","v":{"$error":"#REF!"}},{"$f":"IF(A150>#REF!,\"\",#REF!)","v":{"$error":"#REF!"}},null,143,{"$f":"IF(F150>=#REF!,\"\",IF(F150<=#REF!,#REF!,#REF!))","v":{"$error":"#REF!"}},{"$f":"IF(F150>=#REF!,\"\",IF(F150<=#REF!,#REF!,#REF!))","v":{"$error":"#REF!"}},{"$f":"IF(F150>#REF!,\"\",PMT(#REF!/12,#REF!,-#REF!))","v":{"$error":"#REF!"}},null,null,null,null,143,{"$f":"IF(N150>#REF!,\"\",$L$7)","v":{"$error":"#REF!"}},{"$f":"IF(N150>=#REF!,\"\",IF(N150<=#REF!,#REF!,#REF!))","v":{"$error":"#REF!"}},{"$f":"IF(N150>#REF!,\"\",#REF!)","v":{"$error":"#REF!"}},null,null,null,null,143,{"$f":"IF(V150>#REF!,\"\",$T$7)","v":{"$error":"#REF!"}},{"$f":"IF(V150>=#REF!,\"\",IF(V150<=#REF!,#REF!,#REF!))","v":{"$error":"#REF!"}},{"$f":"IF(V150>#REF!,\"\",#REF!)","v":{"$error":"#REF!"}},null,null,null,null,null,null,null,143]
[144,{"$f":"IF(A151>=#REF!,\"\",IF(A151<=#REF!,#REF!,#REF!))","v":{"$error":"#REF!"}},{"$f":"IF(A151>=#REF!,\"\",IF(A151<=#REF!,#REF!,#REF!))","v":{"$error":"#REF!"}},{"$f":"IF(A151>#REF!,\"\",#REF!)","v":{"$error":"#REF!"}},null,144,{"$f":"IF(F151>=#REF!,\"\",IF(F151<=#REF!,#REF!,#REF!))","v":{"$error":"#REF!"}},{"$f":"IF(F151>=#REF!,\"\",IF(F151<=#REF!,#REF!,#REF!))","v":{"$error":"#REF!"}},{"$f":"IF(F151>#REF!,\"\",PMT(#REF!/12,#REF!,-#REF!))","v":{"$error":"#REF!"}},null,null,null,null,144,{"$f":"IF(N151>#REF!,\"\",$L$7)","v":{"$error":"#REF!"}},{"$f":"IF(N151>=#REF!,\"\",IF(N151<=#REF!,#REF!,#REF!))","v":{"$error":"#REF!"}},{"$f":"IF(N151>#REF!,\"\",#REF!)","v":{"$error":"#REF!"}},null,null,null,null,144,{"$f":"IF(V151>#REF!,\"\",$T$7)","v":{"$error":"#REF!"}},{"$f":"IF(V151>=#REF!,\"\",IF(V151<=#REF!,#REF!,#REF!))","v":{"$error":"#REF!"}},{"$f":"IF(V151>#REF!,\"\",#REF!)","v":{"$error":"#REF!"}},null,null,null,null,null,null,null,144]
[145,{"$f":"IF(A152>=#REF!,\"\",IF(A152<=#REF!,#REF!,#REF!))","v":{"$error":"#REF!"}},{"$f":"IF(A152>=#REF!,\"\",IF(A152<=#REF!,#REF!,#REF!))","v":{"$error":"#REF!"}},{"$f":"IF(A152>#REF!,\"\",#REF!)","v":{"$error":"#REF!"}},null,145,{"$f":"IF(F152>=#REF!,\"\",IF(F152<=#REF!,#REF!,#REF!))","v":{"$error":"#REF!"}},{"$f":"IF(F152>=#REF!,\"\",IF(F152<=#REF!,#REF!,#REF!))","v":{"$error":"#REF!"}},{"$f":"IF(F152>#REF!,\"\",PMT(#REF!/12,#REF!,-#REF!))","v":{"$error":"#REF!"}},null,null,null,null,145,{"$f":"IF(N152>#REF!,\"\",$L$7)","v":{"$error":"#REF!"}},{"$f":"IF(N152>=#REF!,\"\",IF(N152<=#REF!,#REF!,#REF!))","v":{"$error":"#REF!"}},{"$f":"IF(N152>#REF!,\"\",#REF!)","v":{"$error":"#REF!"}},null,null,null,null,145,{"$f":"IF(V152>#REF!,\"\",$T$7)","v":{"$error":"#REF!"}},{"$f":"IF(V152>=#REF!,\"\",IF(V152<=#REF!,#REF!,#REF!))","v":{"$error":"#REF!"}},{"$f":"IF(V152>#REF!,\"\",#REF!)","v":{"$error":"#REF!"}},null,null,null,null,null,null,null,145]
[146,{"$f":"IF(A153>=#REF!,\"\",IF(A153<=#REF!,#REF!,#REF!))","v":{"$error":"#REF!"}},{"$f":"IF(A153>=#REF!,\"\",IF(A153<=#REF!,#REF!,#REF!))","v":{"$error":"#REF!"}},{"$f":"IF(A153>#REF!,\"\",#REF!)","v":{"$error":"#REF!"}},null,146,{"$f":"IF(F153>=#REF!,\"\",IF(F153<=#REF!,#REF!,#REF!))","v":{"$error":"#REF!"}},{"$f":"IF(F153>=#REF!,\"\",IF(F153<=#REF!,#REF!,#REF!))","v":{"$error":"#REF!"}},{"$f":"IF(F153>#REF!,\"\",PMT(#REF!/12,#REF!,-#REF!))","v":{"$error":"#REF!"}},null,null,null,null,146,{"$f":"IF(N153>#REF!,\"\",$L$7)","v":{"$error":"#REF!"}},{"$f":"IF(N153>=#REF!,\"\",IF(N153<=#REF!,#REF!,#REF!))","v":{"$error":"#REF!"}},{"$f":"IF(N153>#REF!,\"\",#REF!)","v":{"$error":"#REF!"}},null,null,null,null,146,{"$f":"IF(V153>#REF!,\"\",$T$7)","v":{"$error":"#REF!"}},{"$f":"IF(V153>=#REF!,\"\",IF(V153<=#REF!,#REF!,#REF!))","v":{"$error":"#REF!"}},{"$f":"IF(V153>#REF!,\"\",#REF!)","v":{"$error":"#REF!"}},null,null,null,null,null,null,null,146]
[147,{"$f":"IF(A154>=#REF!,\"\",IF(A154<=#REF!,#REF!,#REF!))","v":{"$error":"#REF!"}},{"$f":"IF(A154>=#REF!,\"\",IF(A154<=#REF!,#REF!,#REF!))","v":{"$error":"#REF!"}},{"$f":"IF(A154>#REF!,\"\",#REF!)","v":{"$error":"#REF!"}},null,147,{"$f":"IF(F154>=#REF!,\"\",IF(F154<=#REF!,#REF!,#REF!))","v":{"$error":"#REF!"}},{"$f":"IF(F154>=#REF!,\"\",IF(F154<=#REF!,#REF!,#REF!))","v":{"$error":"#REF!"}},{"$f":"IF(F154>#REF!,\"\",PMT(#REF!/12,#REF!,-#REF!))","v":{"$error":"#REF!"}},null,null,null,null,147,{"$f":"IF(N154>#REF!,\"\",$L$7)","v":{"$error":"#REF!"}},{"$f":"IF(N154>=#REF!,\"\",IF(N154<=#REF!,#REF!,#REF!))","v":{"$error":"#REF!"}},{"$f":"IF(N154>#REF!,\"\",#REF!)","v":{"$error":"#REF!"}},null,null,null,null,147,{"$f":"IF(V154>#REF!,\"\",$T$7)","v":{"$error":"#REF!"}},{"$f":"IF(V154>=#REF!,\"\",IF(V154<=#REF!,#REF!,#REF!))","v":{"$error":"#REF!"}},{"$f":"IF(V154>#REF!,\"\",#REF!)","v":{"$error":"#REF!"}},null,null,null,null,null,null,null,147]
[148,{"$f":"IF(A155>=#REF!,\"\",IF(A155<=#REF!,#REF!,#REF!))","v":{"$error":"#REF!"}},{"$f":"IF(A155>=#REF!,\"\",IF(A155<=#REF!,#REF!,#REF!))","v":{"$error":"#REF!"}},{"$f":"IF(A155>#REF!,\"\",#REF!)","v":{"$error":"#REF!"}},null,148,{"$f":"IF(F155>=#REF!,\"\",IF(F155<=#REF!,#REF!,#REF!))","v":{"$error":"#REF!"}},{"$f":"IF(F155>=#REF!,\"\",IF(F155<=#REF!,#REF!,#REF!))","v":{"$error":"#REF!"}},{"$f":"IF(F155>#REF!,\"\",PMT(#REF!/12,#REF!,-#REF!))","v":{"$error":"#REF!"}},null,null,null,null,148,{"$f":"IF(N155>#REF!,\"\",$L$7)","v":{"$error":"#REF!"}},{"$f":"IF(N155>=#REF!,\"\",IF(N155<=#REF!,#REF!,#REF!))","v":{"$error":"#REF!"}},{"$f":"IF(N155>#REF!,\"\",#REF!)","v":{"$error":"#REF!"}},null,null,null,null,148,{"$f":"IF(V155>#REF!,\"\",$T$7)","v":{"$error":"#REF!"}},{"$f":"IF(V155>=#REF!,\"\",IF(V155<=#REF!,#REF!,#REF!))","v":{"$error":"#REF!"}},{"$f":"IF(V155>#REF!,\"\",#REF!)","v":{"$error":"#REF!"}},null,null,null,null,null,null,null,148]
[149,{"$f":"IF(A156>=#REF!,\"\",IF(A156<=#REF!,#REF!,#REF!))","v":{"$error":"#REF!"}},{"$f":"IF(A156>=#REF!,\"\",IF(A156<=#REF!,#REF!,#REF!))","v":{"$error":"#REF!"}},{"$f":"IF(A156>#REF!,\"\",#REF!)","v":{"$error":"#REF!"}},null,149,{"$f":"IF(F156>=#REF!,\"\",IF(F156<=#REF!,#REF!,#REF!))","v":{"$error":"#REF!"}},{"$f":"IF(F156>=#REF!,\"\",IF(F156<=#REF!,#REF!,#REF!))","v":{"$error":"#REF!"}},{"$f":"IF(F156>#REF!,\"\",PMT(#REF!/12,#REF!,-#REF!))","v":{"$error":"#REF!"}},null,null,null,null,149,{"$f":"IF(N156>#REF!,\"\",$L$7)","v":{"$error":"#REF!"}},{"$f":"IF(N156>=#REF!,\"\",IF(N156<=#REF!,#REF!,#REF!))","v":{"$error":"#REF!"}},{"$f":"IF(N156>#REF!,\"\",#REF!)","v":{"$error":"#REF!"}},null,null,null,null,149,{"$f":"IF(V156>#REF!,\"\",$T$7)","v":{"$error":"#REF!"}},{"$f":"IF(V156>=#REF!,\"\",IF(V156<=#REF!,#REF!,#REF!))","v":{"$error":"#REF!"}},{"$f":"IF(V156>#REF!,\"\",#REF!)","v":{"$error":"#REF!"}},null,null,null,null,null,null,null,149]
[150,{"$f":"IF(A157>=#REF!,\"\",IF(A157<=#REF!,#REF!,#REF!))","v":{"$error":"#REF!"}},{"$f":"IF(A157>=#REF!,\"\",IF(A157<=#REF!,#REF!,#REF!))","v":{"$error":"#REF!"}},{"$f":"IF(A157>#REF!,\"\",#REF!)","v":{"$error":"#REF!"}},null,150,{"$f":"IF(F157>=#REF!,\"\",IF(F157<=#REF!,#REF!,#REF!))","v":{"$error":"#REF!"}},{"$f":"IF(F157>=#REF!,\"\",IF(F157<=#REF!,#REF!,#REF!))","v":{"$error":"#REF!"}},{"$f":"IF(F157>#REF!,\"\",PMT(#REF!/12,#REF!,-#REF!))","v":{"$error":"#REF!"}},null,null,null,null,150,{"$f":"IF(N157>#REF!,\"\",$L$7)","v":{"$error":"#REF!"}},{"$f":"IF(N157>=#REF!,\"\",IF(N157<=#REF!,#REF!,#REF!))","v":{"$error":"#REF!"}},{"$f":"IF(N157>#REF!,\"\",#REF!)","v":{"$error":"#REF!"}},null,null,null,null,150,{"$f":"IF(V157>#REF!,\"\",$T$7)","v":{"$error":"#REF!"}},{"$f":"IF(V157>=#REF!,\"\",IF(V157<=#REF!,#REF!,#REF!))","v":{"$error":"#REF!"}},{"$f":"IF(V157>#REF!,\"\",#REF!)","v":{"$error":"#REF!"}},null,null,null,null,null,null,null,150]
[151,{"$f":"IF(A158>=#REF!,\"\",IF(A158<=#REF!,#REF!,#REF!))","v":{"$error":"#REF!"}},{"$f":"IF(A158>=#REF!,\"\",IF(A158<=#REF!,#REF!,#REF!))","v":{"$error":"#REF!"}},{"$f":"IF(A158>#REF!,\"\",#REF!)","v":{"$error":"#REF!"}},null,151,{"$f":"IF(F158>=#REF!,\"\",IF(F158<=#REF!,#REF!,#REF!))","v":{"$error":"#REF!"}},{"$f":"IF(F158>=#REF!,\"\",IF(F158<=#REF!,#REF!,#REF!))","v":{"$error":"#REF!"}},{"$f":"IF(F158>#REF!,\"\",PMT(#REF!/12,#REF!,-#REF!))","v":{"$error":"#REF!"}},null,null,null,null,151,{"$f":"IF(N158>#REF!,\"\",$L$7)","v":{"$error":"#REF!"}},{"$f":"IF(N158>=#REF!,\"\",IF(N158<=#REF!,#REF!,#REF!))","v":{"$error":"#REF!"}},{"$f":"IF(N158>#REF!,\"\",#REF!)","v":{"$error":"#REF!"}},null,null,null,null,151,{"$f":"IF(V158>#REF!,\"\",$T$7)","v":{"$error":"#REF!"}},{"$f":"IF(V158>=#REF!,\"\",IF(V158<=#REF!,#REF!,#REF!))","v":{"$error":"#REF!"}},{"$f":"IF(V158>#REF!,\"\",#REF!)","v":{"$error":"#REF!"}},null,null,null,null,null,null,null,151]
[152,{"$f":"IF(A159>=#REF!,\"\",IF(A159<=#REF!,#REF!,#REF!))","v":{"$error":"#REF!"}},{"$f":"IF(A159>=#REF!,\"\",IF(A159<=#REF!,#REF!,#REF!))","v":{"$error":"#REF!"}},{"$f":"IF(A159>#REF!,\"\",#REF!)","v":{"$error":"#REF!"}},null,152,{"$f":"IF(F159>=#REF!,\"\",IF(F159<=#REF!,#REF!,#REF!))","v":{"$error":"#REF!"}},{"$f":"IF(F159>=#REF!,\"\",IF(F159<=#REF!,#REF!,#REF!))","v":{"$error":"#REF!"}},{"$f":"IF(F159>#REF!,\"\",PMT(#REF!/12,#REF!,-#REF!))","v":{"$error":"#REF!"}},null,null,null,null,152,{"$f":"IF(N159>#REF!,\"\",$L$7)","v":{"$error":"#REF!"}},{"$f":"IF(N159>=#REF!,\"\",IF(N159<=#REF!,#REF!,#REF!))","v":{"$error":"#REF!"}},{"$f":"IF(N159>#REF!,\"\",#REF!)","v":{"$error":"#REF!"}},null,null,null,null,152,{"$f":"IF(V159>#REF!,\"\",$T$7)","v":{"$error":"#REF!"}},{"$f":"IF(V159>=#REF!,\"\",IF(V159<=#REF!,#REF!,#REF!))","v":{"$error":"#REF!"}},{"$f":"IF(V159>#REF!,\"\",#REF!)","v":{"$error":"#REF!"}},null,null,null,null,null,null,null,152]
[153,{"$f":"IF(A160>=#REF!,\"\",IF(A160<=#REF!,#REF!,#REF!))","v":{"$error":"#REF!"}},{"$f":"IF(A160>=#REF!,\"\",IF(A160<=#REF!,#REF!,#REF!))","v":{"$error":"#REF!"}},{"$f":"IF(A160>#REF!,\"\",#REF!)","v":{"$error":"#REF!"}},null,153,{"$f":"IF(F160>=#REF!,\"\",IF(F160<=#REF!,#REF!,#REF!))","v":{"$error":"#REF!"}},{"$f":"IF(F160>=#REF!,\"\",IF(F160<=#REF!,#REF!,#REF!))","v":{"$error":"#REF!"}},{"$f":"IF(F160>#REF!,\"\",PMT(#REF!/12,#REF!,-#REF!))","v":{"$error":"#REF!"}},null,null,null,null,153,{"$f":"IF(N160>#REF!,\"\",$L$7)","v":{"$error":"#REF!"}},{"$f":"IF(N160>=#REF!,\"\",IF(N160<=#REF!,#REF!,#REF!))","v":{"$error":"#REF!"}},{"$f":"IF(N160>#REF!,\"\",#REF!)","v":{"$error":"#REF!"}},null,null,null,null,153,{"$f":"IF(V160>#REF!,\"\",$T$7)","v":{"$error":"#REF!"}},{"$f":"IF(V160>=#REF!,\"\",IF(V160<=#REF!,#REF!,#REF!))","v":{"$error":"#REF!"}},{"$f":"IF(V160>#REF!,\"\",#REF!)","v":{"$error":"#REF!"}},null,null,null,null,null,null,null,153]
[154,{"$f":"IF(A161>=#REF!,\"\",IF(A161<=#REF!,#REF!,#REF!))","v":{"$error":"#REF!"}},{"$f":"IF(A161>=#REF!,\"\",IF(A161<=#REF!,#REF!,#REF!))","v":{"$error":"#REF!"}},{"$f":"IF(A161>#REF!,\"\",#REF!)","v":{"$error":"#REF!"}},null,154,{"$f":"IF(F161>=#REF!,\"\",IF(F161<=#REF!,#REF!,#REF!))","v":{"$error":"#REF!"}},{"$f":"IF(F161>=#REF!,\"\",IF(F161<=#REF!,#REF!,#REF!))","v":{"$error":"#REF!"}},{"$f":"IF(F161>#REF!,\"\",PMT(#REF!/12,#REF!,-#REF!))","v":{"$error":"#REF!"}},null,null,null,null,154,{"$f":"IF(N161>#REF!,\"\",$L$7)","v":{"$error":"#REF!"}},{"$f":"IF(N161>=#REF!,\"\",IF(N161<=#REF!,#REF!,#REF!))","v":{"$error":"#REF!"}},{"$f":"IF(N161>#REF!,\"\",#REF!)","v":{"$error":"#REF!"}},null,null,null,null,154,{"$f":"IF(V161>#REF!,\"\",$T$7)","v":{"$error":"#REF!"}},{"$f":"IF(V161>=#REF!,\"\",IF(V161<=#REF!,#REF!,#REF!))","v":{"$error":"#REF!"}},{"$f":"IF(V161>#REF!,\"\",#REF!)","v":{"$error":"#REF!"}},null,null,null,null,null,null,null,154]
[155,{"$f":"IF(A162>=#REF!,\"\",IF(A162<=#REF!,#REF!,#REF!))","v":{"$error":"#REF!"}},{"$f":"IF(A162>=#REF!,\"\",IF(A162<=#REF!,#REF!,#REF!))","v":{"$error":"#REF!"}},{"$f":"IF(A162>#REF!,\"\",#REF!)","v":{"$error":"#REF!"}},null,155,{"$f":"IF(F162>=#REF!,\"\",IF(F162<=#REF!,#REF!,#REF!))","v":{"$error":"#REF!"}},{"$f":"IF(F162>=#REF!,\"\",IF(F162<=#REF!,#REF!,#REF!))","v":{"$error":"#REF!"}},{"$f":"IF(F162>#REF!,\"\",PMT(#REF!/12,#REF!,-#REF!))","v":{"$error":"#REF!"}},null,null,null,null,155,{"$f":"IF(N162>#REF!,\"\",$L$7)","v":{"$error":"#REF!"}},{"$f":"IF(N162>=#REF!,\"\",IF(N162<=#REF!,#REF!,#REF!))","v":{"$error":"#REF!"}},{"$f":"IF(N162>#REF!,\"\",#REF!)","v":{"$error":"#REF!"}},null,null,null,null,155,{"$f":"IF(V162>#REF!,\"\",$T$7)","v":{"$error":"#REF!"}},{"$f":"IF(V162>=#REF!,\"\",IF(V162<=#REF!,#REF!,#REF!))","v":{"$error":"#REF!"}},{"$f":"IF(V162>#REF!,\"\",#REF!)","v":{"$error":"#REF!"}},null,null,null,null,null,null,null,155]
[156,{"$f":"IF(A163>=#REF!,\"\",IF(A163<=#REF!,#REF!,#REF!))","v":{"$error":"#REF!"}},{"$f":"IF(A163>=#REF!,\"\",IF(A163<=#REF!,#REF!,#REF!))","v":{"$error":"#REF!"}},{"$f":"IF(A163>#REF!,\"\",#REF!)","v":{"$error":"#REF!"}},null,156,{"$f":"IF(F163>=#REF!,\"\",IF(F163<=#REF!,#REF!,#REF!))","v":{"$error":"#REF!"}},{"$f":"IF(F163>=#REF!,\"\",IF(F163<=#REF!,#REF!,#REF!))","v":{"$error":"#REF!"}},{"$f":"IF(F163>#REF!,\"\",PMT(#REF!/12,#REF!,-#REF!))","v":{"$error":"#REF!"}},null,null,null,null,156,{"$f":"IF(N163>#REF!,\"\",$L$7)","v":{"$error":"#REF!"}},{"$f":"IF(N163>=#REF!,\"\",IF(N163<=#REF!,#REF!,#REF!))","v":{"$error":"#REF!"}},{"$f":"IF(N163>#REF!,\"\",#REF!)","v":{"$error":"#REF!"}},null,null,null,null,156,{"$f":"IF(V163>#REF!,\"\",$T$7)","v":{"$error":"#REF!"}},{"$f":"IF(V163>=#REF!,\"\",IF(V163<=#REF!,#REF!,#REF!))","v":{"$error":"#REF!"}},{"$f":"IF(V163>#REF!,\"\",#REF!)","v":{"$error":"#REF!"}},null,null,null,null,null,null,null,156]
[157,{"$f":"IF(A164>=#REF!,\"\",IF(A164<=#REF!,#REF!,#REF!))","v":{"$error":"#REF!"}},{"$f":"IF(A164>=#REF!,\"\",IF(A164<=#REF!,#REF!,#REF!))","v":{"$error":"#REF!"}},{"$f":"IF(A164>#REF!,\"\",#REF!)","v":{"$error":"#REF!"}},null,157,{"$f":"IF(F164>=#REF!,\"\",IF(F164<=#REF!,#REF!,#REF!))","v":{"$error":"#REF!"}},{"$f":"IF(F164>=#REF!,\"\",IF(F164<=#REF!,#REF!,#REF!))","v":{"$error":"#REF!"}},{"$f":"IF(F164>#REF!,\"\",PMT(#REF!/12,#REF!,-#REF!))","v":{"$error":"#REF!"}},null,null,null,null,157,{"$f":"IF(N164>#REF!,\"\",$L$7)","v":{"$error":"#REF!"}},{"$f":"IF(N164>=#REF!,\"\",IF(N164<=#REF!,#REF!,#REF!))","v":{"$error":"#REF!"}},{"$f":"IF(N164>#REF!,\"\",#REF!)","v":{"$error":"#REF!"}},null,null,null,null,157,{"$f":"IF(V164>#REF!,\"\",$T$7)","v":{"$error":"#REF!"}},{"$f":"IF(V164>=#REF!,\"\",IF(V164<=#REF!,#REF!,#REF!))","v":{"$error":"#REF!"}},{"$f":"IF(V164>#REF!,\"\",#REF!)","v":{"$error":"#REF!"}},null,null,null,null,null,null,null,157]
[158,{"$f":"IF(A165>=#REF!,\"\",IF(A165<=#REF!,#REF!,#REF!))","v":{"$error":"#REF!"}},{"$f":"IF(A165>=#REF!,\"\",IF(A165<=#REF!,#REF!,#REF!))","v":{"$error":"#REF!"}},{"$f":"IF(A165>#REF!,\"\",#REF!)","v":{"$error":"#REF!"}},null,158,{"$f":"IF(F165>=#REF!,\"\",IF(F165<=#REF!,#REF!,#REF!))","v":{"$error":"#REF!"}},{"$f":"IF(F165>=#REF!,\"\",IF(F165<=#REF!,#REF!,#REF!))","v":{"$error":"#REF!"}},{"$f":"IF(F165>#REF!,\"\",PMT(#REF!/12,#REF!,-#REF!))","v":{"$error":"#REF!"}},null,null,null,null,158,{"$f":"IF(N165>#REF!,\"\",$L$7)","v":{"$error":"#REF!"}},{"$f":"IF(N165>=#REF!,\"\",IF(N165<=#REF!,#REF!,#REF!))","v":{"$error":"#REF!"}},{"$f":"IF(N165>#REF!,\"\",#REF!)","v":{"$error":"#REF!"}},null,null,null,null,158,{"$f":"IF(V165>#REF!,\"\",$T$7)","v":{"$error":"#REF!"}},{"$f":"IF(V165>=#REF!,\"\",IF(V165<=#REF!,#REF!,#REF!))","v":{"$error":"#REF!"}},{"$f":"IF(V165>#REF!,\"\",#REF!)","v":{"$error":"#REF!"}},null,null,null,null,null,null,null,158]
[159,{"$f":"IF(A166>=#REF!,\"\",IF(A166<=#REF!,#REF!,#REF!))","v":{"$error":"#REF!"}},{"$f":"IF(A166>=#REF!,\"\",IF(A166<=#REF!,#REF!,#REF!))","v":{"$error":"#REF!"}},{"$f":"IF(A166>#REF!,\"\",#REF!)","v":{"$error":"#REF!"}},null,159,{"$f":"IF(F166>=#REF!,\"\",IF(F166<=#REF!,#REF!,#REF!))","v":{"$error":"#REF!"}},{"$f":"IF(F166>=#REF!,\"\",IF(F166<=#REF!,#REF!,#REF!))","v":{"$error":"#REF!"}},{"$f":"IF(F166>#REF!,\"\",PMT(#REF!/12,#REF!,-#REF!))","v":{"$error":"#REF!"}},null,null,null,null,159,{"$f":"IF(N166>#REF!,\"\",$L$7)","v":{"$error":"#REF!"}},{"$f":"IF(N166>=#REF!,\"\",IF(N166<=#REF!,#REF!,#REF!))","v":{"$error":"#REF!"}},{"$f":"IF(N166>#REF!,\"\",#REF!)","v":{"$error":"#REF!"}},null,null,null,null,159,{"$f":"IF(V166>#REF!,\"\",$T$7)","v":{"$error":"#REF!"}},{"$f":"IF(V166>=#REF!,\"\",IF(V166<=#REF!,#REF!,#REF!))","v":{"$error":"#REF!"}},{"$f":"IF(V166>#REF!,\"\",#REF!)","v":{"$error":"#REF!"}},null,null,null,null,null,null,null,159]
[160,{"$f":"IF(A167>=#REF!,\"\",IF(A167<=#REF!,#REF!,#REF!))","v":{"$error":"#REF!"}},{"$f":"IF(A167>=#REF!,\"\",IF(A167<=#REF!,#REF!,#REF!))","v":{"$error":"#REF!"}},{"$f":"IF(A167>#REF!,\"\",#REF!)","v":{"$error":"#REF!"}},null,160,{"$f":"IF(F167>=#REF!,\"\",IF(F167<=#REF!,#REF!,#REF!))","v":{"$error":"#REF!"}},{"$f":"IF(F167>=#REF!,\"\",IF(F167<=#REF!,#REF!,#REF!))","v":{"$error":"#REF!"}},{"$f":"IF(F167>#REF!,\"\",PMT(#REF!/12,#REF!,-#REF!))","v":{"$error":"#REF!"}},null,null,null,null,160,{"$f":"IF(N167>#REF!,\"\",$L$7)","v":{"$error":"#REF!"}},{"$f":"IF(N167>=#REF!,\"\",IF(N167<=#REF!,#REF!,#REF!))","v":{"$error":"#REF!"}},{"$f":"IF(N167>#REF!,\"\",#REF!)","v":{"$error":"#REF!"}},null,null,null,null,160,{"$f":"IF(V167>#REF!,\"\",$T$7)","v":{"$error":"#REF!"}},{"$f":"IF(V167>=#REF!,\"\",IF(V167<=#REF!,#REF!,#REF!))","v":{"$error":"#REF!"}},{"$f":"IF(V167>#REF!,\"\",#REF!)","v":{"$error":"#REF!"}},null,null,null,null,null,null,null,160]
[161,{"$f":"IF(A168>=#REF!,\"\",IF(A168<=#REF!,#REF!,#REF!))","v":{"$error":"#REF!"}},{"$f":"IF(A168>=#REF!,\"\",IF(A168<=#REF!,#REF!,#REF!))","v":{"$error":"#REF!"}},{"$f":"IF(A168>#REF!,\"\",#REF!)","v":{"$error":"#REF!"}},null,161,{"$f":"IF(F168>=#REF!,\"\",IF(F168<=#REF!,#REF!,#REF!))","v":{"$error":"#REF!"}},{"$f":"IF(F168>=#REF!,\"\",IF(F168<=#REF!,#REF!,#REF!))","v":{"$error":"#REF!"}},{"$f":"IF(F168>#REF!,\"\",PMT(#REF!/12,#REF!,-#REF!))","v":{"$error":"#REF!"}},null,null,null,null,161,{"$f":"IF(N168>#REF!,\"\",$L$7)","v":{"$error":"#REF!"}},{"$f":"IF(N168>=#REF!,\"\",IF(N168<=#REF!,#REF!,#REF!))","v":{"$error":"#REF!"}},{"$f":"IF(N168>#REF!,\"\",#REF!)","v":{"$error":"#REF!"}},null,null,null,null,161,{"$f":"IF(V168>#REF!,\"\",$T$7)","v":{"$error":"#REF!"}},{"$f":"IF(V168>=#REF!,\"\",IF(V168<=#REF!,#REF!,#REF!))","v":{"$error":"#REF!"}},{"$f":"IF(V168>#REF!,\"\",#REF!)","v":{"$error":"#REF!"}},null,null,null,null,null,null,null,161]
[162,{"$f":"IF(A169>=#REF!,\"\",IF(A169<=#REF!,#REF!,#REF!))","v":{"$error":"#REF!"}},{"$f":"IF(A169>=#REF!,\"\",IF(A169<=#REF!,#REF!,#REF!))","v":{"$error":"#REF!"}},{"$f":"IF(A169>#REF!,\"\",#REF!)","v":{"$error":"#REF!"}},null,162,{"$f":"IF(F169>=#REF!,\"\",IF(F169<=#REF!,#REF!,#REF!))","v":{"$error":"#REF!"}},{"$f":"IF(F169>=#REF!,\"\",IF(F169<=#REF!,#REF!,#REF!))","v":{"$error":"#REF!"}},{"$f":"IF(F169>#REF!,\"\",PMT(#REF!/12,#REF!,-#REF!))","v":{"$error":"#REF!"}},null,null,null,null,162,{"$f":"IF(N169>#REF!,\"\",$L$7)","v":{"$error":"#REF!"}},{"$f":"IF(N169>=#REF!,\"\",IF(N169<=#REF!,#REF!,#REF!))","v":{"$error":"#REF!"}},{"$f":"IF(N169>#REF!,\"\",#REF!)","v":{"$error":"#REF!"}},null,null,null,null,162,{"$f":"IF(V169>#REF!,\"\",$T$7)","v":{"$error":"#REF!"}},{"$f":"IF(V169>=#REF!,\"\",IF(V169<=#REF!,#REF!,#REF!))","v":{"$error":"#REF!"}},{"$f":"IF(V169>#REF!,\"\",#REF!)","v":{"$error":"#REF!"}},null,null,null,null,null,null,null,162]
[163,{"$f":"IF(A170>=#REF!,\"\",IF(A170<=#REF!,#REF!,#REF!))","v":{"$error":"#REF!"}},{"$f":"IF(A170>=#REF!,\"\",IF(A170<=#REF!,#REF!,#REF!))","v":{"$error":"#REF!"}},{"$f":"IF(A170>#REF!,\"\",#REF!)","v":{"$error":"#REF!"}},null,163,{"$f":"IF(F170>=#REF!,\"\",IF(F170<=#REF!,#REF!,#REF!))","v":{"$error":"#REF!"}},{"$f":"IF(F170>=#REF!,\"\",IF(F170<=#REF!,#REF!,#REF!))","v":{"$error":"#REF!"}},{"$f":"IF(F170>#REF!,\"\",PMT(#REF!/12,#REF!,-#REF!))","v":{"$error":"#REF!"}},null,null,null,null,163,{"$f":"IF(N170>#REF!,\"\",$L$7)","v":{"$error":"#REF!"}},{"$f":"IF(N170>=#REF!,\"\",IF(N170<=#REF!,#REF!,#REF!))","v":{"$error":"#REF!"}},{"$f":"IF(N170>#REF!,\"\",#REF!)","v":{"$error":"#REF!"}},null,null,null,null,163,{"$f":"IF(V170>#REF!,\"\",$T$7)","v":{"$error":"#REF!"}},{"$f":"IF(V170>=#REF!,\"\",IF(V170<=#REF!,#REF!,#REF!))","v":{"$error":"#REF!"}},{"$f":"IF(V170>#REF!,\"\",#REF!)","v":{"$error":"#REF!"}},null,null,null,null,null,null,null,163]
[164,{"$f":"IF(A171>=#REF!,\"\",IF(A171<=#REF!,#REF!,#REF!))","v":{"$error":"#REF!"}},{"$f":"IF(A171>=#REF!,\"\",IF(A171<=#REF!,#REF!,#REF!))","v":{"$error":"#REF!"}},{"$f":"IF(A171>#REF!,\"\",#REF!)","v":{"$error":"#REF!"}},null,164,{"$f":"IF(F171>=#REF!,\"\",IF(F171<=#REF!,#REF!,#REF!))","v":{"$error":"#REF!"}},{"$f":"IF(F171>=#REF!,\"\",IF(F171<=#REF!,#REF!,#REF!))","v":{"$error":"#REF!"}},{"$f":"IF(F171>#REF!,\"\",PMT(#REF!/12,#REF!,-#REF!))","v":{"$error":"#REF!"}},null,null,null,null,164,{"$f":"IF(N171>#REF!,\"\",$L$7)","v":{"$error":"#REF!"}},{"$f":"IF(N171>=#REF!,\"\",IF(N171<=#REF!,#REF!,#REF!))","v":{"$error":"#REF!"}},{"$f":"IF(N171>#REF!,\"\",#REF!)","v":{"$error":"#REF!"}},null,null,null,null,164,{"$f":"IF(V171>#REF!,\"\",$T$7)","v":{"$error":"#REF!"}},{"$f":"IF(V171>=#REF!,\"\",IF(V171<=#REF!,#REF!,#REF!))","v":{"$error":"#REF!"}},{"$f":"IF(V171>#REF!,\"\",#REF!)","v":{"$error":"#REF!"}},null,null,null,null,null,null,null,164]
[165,{"$f":"IF(A172>=#REF!,\"\",IF(A172<=#REF!,#REF!,#REF!))","v":{"$error":"#REF!"}},{"$f":"IF(A172>=#REF!,\"\",IF(A172<=#REF!,#REF!,#REF!))","v":{"$error":"#REF!"}},{"$f":"IF(A172>#REF!,\"\",#REF!)","v":{"$error":"#REF!"}},null,165,{"$f":"IF(F172>=#REF!,\"\",IF(F172<=#REF!,#REF!,#REF!))","v":{"$error":"#REF!"}},{"$f":"IF(F172>=#REF!,\"\",IF(F172<=#REF!,#REF!,#REF!))","v":{"$error":"#REF!"}},{"$f":"IF(F172>#REF!,\"\",PMT(#REF!/12,#REF!,-#REF!))","v":{"$error":"#REF!"}},null,null,null,null,165,{"$f":"IF(N172>#REF!,\"\",$L$7)","v":{"$error":"#REF!"}},{"$f":"IF(N172>=#REF!,\"\",IF(N172<=#REF!,#REF!,#REF!))","v":{"$error":"#REF!"}},{"$f":"IF(N172>#REF!,\"\",#REF!)","v":{"$error":"#REF!"}},null,null,null,null,165,{"$f":"IF(V172>#REF!,\"\",$T$7)","v":{"$error":"#REF!"}},{"$f":"IF(V172>=#REF!,\"\",IF(V172<=#REF!,#REF!,#REF!))","v":{"$error":"#REF!"}},{"$f":"IF(V172>#REF!,\"\",#REF!)","v":{"$error":"#REF!"}},null,null,null,null,null,null,null,165]
[166,{"$f":"IF(A173>=#REF!,\"\",IF(A173<=#REF!,#REF!,#REF!))","v":{"$error":"#REF!"}},{"$f":"IF(A173>=#REF!,\"\",IF(A173<=#REF!,#REF!,#REF!))","v":{"$error":"#REF!"}},{"$f":"IF(A173>#REF!,\"\",#REF!)","v":{"$error":"#REF!"}},null,166,{"$f":"IF(F173>=#REF!,\"\",IF(F173<=#REF!,#REF!,#REF!))","v":{"$error":"#REF!"}},{"$f":"IF(F173>=#REF!,\"\",IF(F173<=#REF!,#REF!,#REF!))","v":{"$error":"#REF!"}},{"$f":"IF(F173>#REF!,\"\",PMT(#REF!/12,#REF!,-#REF!))","v":{"$error":"#REF!"}},null,null,null,null,166,{"$f":"IF(N173>#REF!,\"\",$L$7)","v":{"$error":"#REF!"}},{"$f":"IF(N173>=#REF!,\"\",IF(N173<=#REF!,#REF!,#REF!))","v":{"$error":"#REF!"}},{"$f":"IF(N173>#REF!,\"\",#REF!)","v":{"$error":"#REF!"}},null,null,null,null,166,{"$f":"IF(V173>#REF!,\"\",$T$7)","v":{"$error":"#REF!"}},{"$f":"IF(V173>=#REF!,\"\",IF(V173<=#REF!,#REF!,#REF!))","v":{"$error":"#REF!"}},{"$f":"IF(V173>#REF!,\"\",#REF!)","v":{"$error":"#REF!"}},null,null,null,null,null,null,null,166]
[167,{"$f":"IF(A174>=#REF!,\"\",IF(A174<=#REF!,#REF!,#REF!))","v":{"$error":"#REF!"}},{"$f":"IF(A174>=#REF!,\"\",IF(A174<=#REF!,#REF!,#REF!))","v":{"$error":"#REF!"}},{"$f":"IF(A174>#REF!,\"\",#REF!)","v":{"$error":"#REF!"}},null,167,{"$f":"IF(F174>=#REF!,\"\",IF(F174<=#REF!,#REF!,#REF!))","v":{"$error":"#REF!"}},{"$f":"IF(F174>=#REF!,\"\",IF(F174<=#REF!,#REF!,#REF!))","v":{"$error":"#REF!"}},{"$f":"IF(F174>#REF!,\"\",PMT(#REF!/12,#REF!,-#REF!))","v":{"$error":"#REF!"}},null,null,null,null,167,{"$f":"IF(N174>#REF!,\"\",$L$7)","v":{"$error":"#REF!"}},{"$f":"IF(N174>=#REF!,\"\",IF(N174<=#REF!,#REF!,#REF!))","v":{"$error":"#REF!"}},{"$f":"IF(N174>#REF!,\"\",#REF!)","v":{"$error":"#REF!"}},null,null,null,null,167,{"$f":"IF(V174>#REF!,\"\",$T$7)","v":{"$error":"#REF!"}},{"$f":"IF(V174>=#REF!,\"\",IF(V174<=#REF!,#REF!,#REF!))","v":{"$error":"#REF!"}},{"$f":"IF(V174>#REF!,\"\",#REF!)","v":{"$error":"#REF!"}},null,null,null,null,null,null,null,167]
[168,{"$f":"IF(A175>=#REF!,\"\",IF(A175<=#REF!,#REF!,#REF!))","v":{"$error":"#REF!"}},{"$f":"IF(A175>=#REF!,\"\",IF(A175<=#REF!,#REF!,#REF!))","v":{"$error":"#REF!"}},{"$f":"IF(A175>#REF!,\"\",#REF!)","v":{"$error":"#REF!"}},null,168,{"$f":"IF(F175>=#REF!,\"\",IF(F175<=#REF!,#REF!,#REF!))","v":{"$error":"#REF!"}},{"$f":"IF(F175>=#REF!,\"\",IF(F175<=#REF!,#REF!,#REF!))","v":{"$error":"#REF!"}},{"$f":"IF(F175>#REF!,\"\",PMT(#REF!/12,#REF!,-#REF!))","v":{"$error":"#REF!"}},null,null,null,null,168,{"$f":"IF(N175>#REF!,\"\",$L$7)","v":{"$error":"#REF!"}},{"$f":"IF(N175>=#REF!,\"\",IF(N175<=#REF!,#REF!,#REF!))","v":{"$error":"#REF!"}},{"$f":"IF(N175>#REF!,\"\",#REF!)","v":{"$error":"#REF!"}},null,null,null,null,168,{"$f":"IF(V175>#REF!,\"\",$T$7)","v":{"$error":"#REF!"}},{"$f":"IF(V175>=#REF!,\"\",IF(V175<=#REF!,#REF!,#REF!))","v":{"$error":"#REF!"}},{"$f":"IF(V175>#REF!,\"\",#REF!)","v":{"$error":"#REF!"}},null,null,null,null,null,null,null,168]
[169,{"$f":"IF(A176>=#REF!,\"\",IF(A176<=#REF!,#REF!,#REF!))","v":{"$error":"#REF!"}},{"$f":"IF(A176>=#REF!,\"\",IF(A176<=#REF!,#REF!,#REF!))","v":{"$error":"#REF!"}},{"$f":"IF(A176>#REF!,\"\",#REF!)","v":{"$error":"#REF!"}},null,169,{"$f":"IF(F176>=#REF!,\"\",IF(F176<=#REF!,#REF!,#REF!))","v":{"$error":"#REF!"}},{"$f":"IF(F176>=#REF!,\"\",IF(F176<=#REF!,#REF!,#REF!))","v":{"$error":"#REF!"}},{"$f":"IF(F176>#REF!,\"\",PMT(#REF!/12,#REF!,-#REF!))","v":{"$error":"#REF!"}},null,null,null,null,169,{"$f":"IF(N176>#REF!,\"\",$L$7)","v":{"$error":"#REF!"}},{"$f":"IF(N176>=#REF!,\"\",IF(N176<=#REF!,#REF!,#REF!))","v":{"$error":"#REF!"}},{"$f":"IF(N176>#REF!,\"\",#REF!)","v":{"$error":"#REF!"}},null,null,null,null,169,{"$f":"IF(V176>#REF!,\"\",$T$7)","v":{"$error":"#REF!"}},{"$f":"IF(V176>=#REF!,\"\",IF(V176<=#REF!,#REF!,#REF!))","v":{"$error":"#REF!"}},{"$f":"IF(V176>#REF!,\"\",#REF!)","v":{"$error":"#REF!"}},null,null,null,null,null,null,null,169]
[170,{"$f":"IF(A177>=#REF!,\"\",IF(A177<=#REF!,#REF!,#REF!))","v":{"$error":"#REF!"}},{"$f":"IF(A177>=#REF!,\"\",IF(A177<=#REF!,#REF!,#REF!))","v":{"$error":"#REF!"}},{"$f":"IF(A177>#REF!,\"\",#REF!)","v":{"$error":"#REF!"}},null,170,{"$f":"IF(F177>=#REF!,\"\",IF(F177<=#REF!,#REF!,#REF!))","v":{"$error":"#REF!"}},{"$f":"IF(F177>=#REF!,\"\",IF(F177<=#REF!,#REF!,#REF!))","v":{"$error":"#REF!"}},{"$f":"IF(F177>#REF!,\"\",PMT(#REF!/12,#REF!,-#REF!))","v":{"$error":"#REF!"}},null,null,null,null,170,{"$f":"IF(N177>#REF!,\"\",$L$7)","v":{"$error":"#REF!"}},{"$f":"IF(N177>=#REF!,\"\",IF(N177<=#REF!,#REF!,#REF!))","v":{"$error":"#REF!"}},{"$f":"IF(N177>#REF!,\"\",#REF!)","v":{"$error":"#REF!"}},null,null,null,null,170,{"$f":"IF(V177>#REF!,\"\",$T$7)","v":{"$error":"#REF!"}},{"$f":"IF(V177>=#REF!,\"\",IF(V177<=#REF!,#REF!,#REF!))","v":{"$error":"#REF!"}},{"$f":"IF(V177>#REF!,\"\",#REF!)","v":{"$error":"#REF!"}},null,null,null,null,null,null,null,170]
[171,{"$f":"IF(A178>=#REF!,\"\",IF(A178<=#REF!,#REF!,#REF!))","v":{"$error":"#REF!"}},{"$f":"IF(A178>=#REF!,\"\",IF(A178<=#REF!,#REF!,#REF!))","v":{"$error":"#REF!"}},{"$f":"IF(A178>#REF!,\"\",#REF!)","v":{"$error":"#REF!"}},null,171,{"$f":"IF(F178>=#REF!,\"\",IF(F178<=#REF!,#REF!,#REF!))","v":{"$error":"#REF!"}},{"$f":"IF(F178>=#REF!,\"\",IF(F178<=#REF!,#REF!,#REF!))","v":{"$error":"#REF!"}},{"$f":"IF(F178>#REF!,\"\",PMT(#REF!/12,#REF!,-#REF!))","v":{"$error":"#REF!"}},null,null,null,null,171,{"$f":"IF(N178>#REF!,\"\",$L$7)","v":{"$error":"#REF!"}},{"$f":"IF(N178>=#REF!,\"\",IF(N178<=#REF!,#REF!,#REF!))","v":{"$error":"#REF!"}},{"$f":"IF(N178>#REF!,\"\",#REF!)","v":{"$error":"#REF!"}},null,null,null,null,171,{"$f":"IF(V178>#REF!,\"\",$T$7)","v":{"$error":"#REF!"}},{"$f":"IF(V178>=#REF!,\"\",IF(V178<=#REF!,#REF!,#REF!))","v":{"$error":"#REF!"}},{"$f":"IF(V178>#REF!,\"\",#REF!)","v":{"$error":"#REF!"}},null,null,null,null,null,null,null,171]
[172,{"$f":"IF(A179>=#REF!,\"\",IF(A179<=#REF!,#REF!,#REF!))","v":{"$error":"#REF!"}},{"$f":"IF(A179>=#REF!,\"\",IF(A179<=#REF!,#REF!,#REF!))","v":{"$error":"#REF!"}},{"$f":"IF(A179>#REF!,\"\",#REF!)","v":{"$error":"#REF!"}},null,172,{"$f":"IF(F179>=#REF!,\"\",IF(F179<=#REF!,#REF!,#REF!))","v":{"$error":"#REF!"}},{"$f":"IF(F179>=#REF!,\"\",IF(F179<=#REF!,#REF!,#REF!))","v":{"$error":"#REF!"}},{"$f":"IF(F179>#REF!,\"\",PMT(#REF!/12,#REF!,-#REF!))","v":{"$error":"#REF!"}},null,null,null,null,172,{"$f":"IF(N179>#REF!,\"\",$L$7)","v":{"$error":"#REF!"}},{"$f":"IF(N179>=#REF!,\"\",IF(N179<=#REF!,#REF!,#REF!))","v":{"$error":"#REF!"}},{"$f":"IF(N179>#REF!,\"\",#REF!)","v":{"$error":"#REF!"}},null,null,null,null,172,{"$f":"IF(V179>#REF!,\"\",$T$7)","v":{"$error":"#REF!"}},{"$f":"IF(V179>=#REF!,\"\",IF(V179<=#REF!,#REF!,#REF!))","v":{"$error":"#REF!"}},{"$f":"IF(V179>#REF!,\"\",#REF!)","v":{"$error":"#REF!"}},null,null,null,null,null,null,null,172]
[173,{"$f":"IF(A180>=#REF!,\"\",IF(A180<=#REF!,#REF!,#REF!))","v":{"$error":"#REF!"}},{"$f":"IF(A180>=#REF!,\"\",IF(A180<=#REF!,#REF!,#REF!))","v":{"$error":"#REF!"}},{"$f":"IF(A180>#REF!,\"\",#REF!)","v":{"$error":"#REF!"}},null,173,{"$f":"IF(F180>=#REF!,\"\",IF(F180<=#REF!,#REF!,#REF!))","v":{"$error":"#REF!"}},{"$f":"IF(F180>=#REF!,\"\",IF(F180<=#REF!,#REF!,#REF!))","v":{"$error":"#REF!"}},{"$f":"IF(F180>#REF!,\"\",PMT(#REF!/12,#REF!,-#REF!))","v":{"$error":"#REF!"}},null,null,null,null,173,{"$f":"IF(N180>#REF!,\"\",$L$7)","v":{"$error":"#REF!"}},{"$f":"IF(N180>=#REF!,\"\",IF(N180<=#REF!,#REF!,#REF!))","v":{"$error":"#REF!"}},{"$f":"IF(N180>#REF!,\"\",#REF!)","v":{"$error":"#REF!"}},null,null,null,null,173,{"$f":"IF(V180>#REF!,\"\",$T$7)","v":{"$error":"#REF!"}},{"$f":"IF(V180>=#REF!,\"\",IF(V180<=#REF!,#REF!,#REF!))","v":{"$error":"#REF!"}},{"$f":"IF(V180>#REF!,\"\",#REF!)","v":{"$error":"#REF!"}},null,null,null,null,null,null,null,173]
[174,{"$f":"IF(A181>=#REF!,\"\",IF(A181<=#REF!,#REF!,#REF!))","v":{"$error":"#REF!"}},{"$f":"IF(A181>=#REF!,\"\",IF(A181<=#REF!,#REF!,#REF!))","v":{"$error":"#REF!"}},{"$f":"IF(A181>#REF!,\"\",#REF!)","v":{"$error":"#REF!"}},null,174,{"$f":"IF(F181>=#REF!,\"\",IF(F181<=#REF!,#REF!,#REF!))","v":{"$error":"#REF!"}},{"$f":"IF(F181>=#REF!,\"\",IF(F181<=#REF!,#REF!,#REF!))","v":{"$error":"#REF!"}},{"$f":"IF(F181>#REF!,\"\",PMT(#REF!/12,#REF!,-#REF!))","v":{"$error":"#REF!"}},null,null,null,null,174,{"$f":"IF(N181>#REF!,\"\",$L$7)","v":{"$error":"#REF!"}},{"$f":"IF(N181>=#REF!,\"\",IF(N181<=#REF!,#REF!,#REF!))","v":{"$error":"#REF!"}},{"$f":"IF(N181>#REF!,\"\",#REF!)","v":{"$error":"#REF!"}},null,null,null,null,174,{"$f":"IF(V181>#REF!,\"\",$T$7)","v":{"$error":"#REF!"}},{"$f":"IF(V181>=#REF!,\"\",IF(V181<=#REF!,#REF!,#REF!))","v":{"$error":"#REF!"}},{"$f":"IF(V181>#REF!,\"\",#REF!)","v":{"$error":"#REF!"}},null,null,null,null,null,null,null,174]
[175,{"$f":"IF(A182>=#REF!,\"\",IF(A182<=#REF!,#REF!,#REF!))","v":{"$error":"#REF!"}},{"$f":"IF(A182>=#REF!,\"\",IF(A182<=#REF!,#REF!,#REF!))","v":{"$error":"#REF!"}},{"$f":"IF(A182>#REF!,\"\",#REF!)","v":{"$error":"#REF!"}},null,175,{"$f":"IF(F182>=#REF!,\"\",IF(F182<=#REF!,#REF!,#REF!))","v":{"$error":"#REF!"}},{"$f":"IF(F182>=#REF!,\"\",IF(F182<=#REF!,#REF!,#REF!))","v":{"$error":"#REF!"}},{"$f":"IF(F182>#REF!,\"\",PMT(#REF!/12,#REF!,-#REF!))","v":{"$error":"#REF!"}},null,null,null,null,175,{"$f":"IF(N182>#REF!,\"\",$L$7)","v":{"$error":"#REF!"}},{"$f":"IF(N182>=#REF!,\"\",IF(N182<=#REF!,#REF!,#REF!))","v":{"$error":"#REF!"}},{"$f":"IF(N182>#REF!,\"\",#REF!)","v":{"$error":"#REF!"}},null,null,null,null,175,{"$f":"IF(V182>#REF!,\"\",$T$7)","v":{"$error":"#REF!"}},{"$f":"IF(V182>=#REF!,\"\",IF(V182<=#REF!,#REF!,#REF!))","v":{"$error":"#REF!"}},{"$f":"IF(V182>#REF!,\"\",#REF!)","v":{"$error":"#REF!"}},null,null,null,null,null,null,null,175]
[176,{"$f":"IF(A183>=#REF!,\"\",IF(A183<=#REF!,#REF!,#REF!))","v":{"$error":"#REF!"}},{"$f":"IF(A183>=#REF!,\"\",IF(A183<=#REF!,#REF!,#REF!))","v":{"$error":"#REF!"}},{"$f":"IF(A183>#REF!,\"\",#REF!)","v":{"$error":"#REF!"}},null,176,{"$f":"IF(F183>=#REF!,\"\",IF(F183<=#REF!,#REF!,#REF!))","v":{"$error":"#REF!"}},{"$f":"IF(F183>=#REF!,\"\",IF(F183<=#REF!,#REF!,#REF!))","v":{"$error":"#REF!"}},{"$f":"IF(F183>#REF!,\"\",PMT(#REF!/12,#REF!,-#REF!))","v":{"$error":"#REF!"}},null,null,null,null,176,{"$f":"IF(N183>#REF!,\"\",$L$7)","v":{"$error":"#REF!"}},{"$f":"IF(N183>=#REF!,\"\",IF(N183<=#REF!,#REF!,#REF!))","v":{"$error":"#REF!"}},{"$f":"IF(N183>#REF!,\"\",#REF!)","v":{"$error":"#REF!"}},null,null,null,null,176,{"$f":"IF(V183>#REF!,\"\",$T$7)","v":{"$error":"#REF!"}},{"$f":"IF(V183>=#REF!,\"\",IF(V183<=#REF!,#REF!,#REF!))","v":{"$error":"#REF!"}},{"$f":"IF(V183>#REF!,\"\",#REF!)","v":{"$error":"#REF!"}},null,null,null,null,null,null,null,176]
[177,{"$f":"IF(A184>=#REF!,\"\",IF(A184<=#REF!,#REF!,#REF!))","v":{"$error":"#REF!"}},{"$f":"IF(A184>=#REF!,\"\",IF(A184<=#REF!,#REF!,#REF!))","v":{"$error":"#REF!"}},{"$f":"IF(A184>#REF!,\"\",#REF!)","v":{"$error":"#REF!"}},null,177,{"$f":"IF(F184>=#REF!,\"\",IF(F184<=#REF!,#REF!,#REF!))","v":{"$error":"#REF!"}},{"$f":"IF(F184>=#REF!,\"\",IF(F184<=#REF!,#REF!,#REF!))","v":{"$error":"#REF!"}},{"$f":"IF(F184>#REF!,\"\",PMT(#REF!/12,#REF!,-#REF!))","v":{"$error":"#REF!"}},null,null,null,null,177,{"$f":"IF(N184>#REF!,\"\",$L$7)","v":{"$error":"#REF!"}},{"$f":"IF(N184>=#REF!,\"\",IF(N184<=#REF!,#REF!,#REF!))","v":{"$error":"#REF!"}},{"$f":"IF(N184>#REF!,\"\",#REF!)","v":{"$error":"#REF!"}},null,null,null,null,177,{"$f":"IF(V184>#REF!,\"\",$T$7)","v":{"$error":"#REF!"}},{"$f":"IF(V184>=#REF!,\"\",IF(V184<=#REF!,#REF!,#REF!))","v":{"$error":"#REF!"}},{"$f":"IF(V184>#REF!,\"\",#REF!)","v":{"$error":"#REF!"}},null,null,null,null,null,null,null,177]
[178,{"$f":"IF(A185>=#REF!,\"\",IF(A185<=#REF!,#REF!,#REF!))","v":{"$error":"#REF!"}},{"$f":"IF(A185>=#REF!,\"\",IF(A185<=#REF!,#REF!,#REF!))","v":{"$error":"#REF!"}},{"$f":"IF(A185>#REF!,\"\",#REF!)","v":{"$error":"#REF!"}},null,178,{"$f":"IF(F185>=#REF!,\"\",IF(F185<=#REF!,#REF!,#REF!))","v":{"$error":"#REF!"}},{"$f":"IF(F185>=#REF!,\"\",IF(F185<=#REF!,#REF!,#REF!))","v":{"$error":"#REF!"}},{"$f":"IF(F185>#REF!,\"\",PMT(#REF!/12,#REF!,-#REF!))","v":{"$error":"#REF!"}},null,null,null,null,178,{"$f":"IF(N185>#REF!,\"\",$L$7)","v":{"$error":"#REF!"}},{"$f":"IF(N185>=#REF!,\"\",IF(N185<=#REF!,#REF!,#REF!))","v":{"$error":"#REF!"}},{"$f":"IF(N185>#REF!,\"\",#REF!)","v":{"$error":"#REF!"}},null,null,null,null,178,{"$f":"IF(V185>#REF!,\"\",$T$7)","v":{"$error":"#REF!"}},{"$f":"IF(V185>=#REF!,\"\",IF(V185<=#REF!,#REF!,#REF!))","v":{"$error":"#REF!"}},{"$f":"IF(V185>#REF!,\"\",#REF!)","v":{"$error":"#REF!"}},null,null,null,null,null,null,null,178]
[179,{"$f":"IF(A186>=#REF!,\"\",IF(A186<=#REF!,#REF!,#REF!))","v":{"$error":"#REF!"}},{"$f":"IF(A186>=#REF!,\"\",IF(A186<=#REF!,#REF!,#REF!))","v":{"$error":"#REF!"}},{"$f":"IF(A186>#REF!,\"\",#REF!)","v":{"$error":"#REF!"}},null,179,{"$f":"IF(F186>=#REF!,\"\",IF(F186<=#REF!,#REF!,#REF!))","v":{"$error":"#REF!"}},{"$f":"IF(F186>=#REF!,\"\",IF(F186<=#REF!,#REF!,#REF!))","v":{"$error":"#REF!"}},{"$f":"IF(F186>#REF!,\"\",PMT(#REF!/12,#REF!,-#REF!))","v":{"$error":"#REF!"}},null,null,null,null,179,{"$f":"IF(N186>#REF!,\"\",$L$7)","v":{"$error":"#REF!"}},{"$f":"IF(N186>=#REF!,\"\",IF(N186<=#REF!,#REF!,#REF!))","v":{"$error":"#REF!"}},{"$f":"IF(N186>#REF!,\"\",#REF!)","v":{"$error":"#REF!"}},null,null,null,null,179,{"$f":"IF(V186>#REF!,\"\",$T$7)","v":{"$error":"#REF!"}},{"$f":"IF(V186>=#REF!,\"\",IF(V186<=#REF!,#REF!,#REF!))","v":{"$error":"#REF!"}},{"$f":"IF(V186>#REF!,\"\",#REF!)","v":{"$error":"#REF!"}},null,null,null,null,null,null,null,179]
[180,{"$f":"IF(A187>=#REF!,\"\",IF(A187<=#REF!,#REF!,#REF!))","v":{"$error":"#REF!"}},{"$f":"IF(A187>=#REF!,\"\",IF(A187<=#REF!,#REF!,#REF!))","v":{"$error":"#REF!"}},{"$f":"IF(A187>#REF!,\"\",#REF!)","v":{"$error":"#REF!"}},null,180,{"$f":"IF(F187>=#REF!,\"\",IF(F187<=#REF!,#REF!,#REF!))","v":{"$error":"#REF!"}},{"$f":"IF(F187>=#REF!,\"\",IF(F187<=#REF!,#REF!,#REF!))","v":{"$error":"#REF!"}},{"$f":"IF(F187>#REF!,\"\",PMT(#REF!/12,#REF!,-#REF!))","v":{"$error":"#REF!"}},null,null,null,null,180,{"$f":"IF(N187>#REF!,\"\",$L$7)","v":{"$error":"#REF!"}},{"$f":"IF(N187>=#REF!,\"\",IF(N187<=#REF!,#REF!,#REF!))","v":{"$error":"#REF!"}},{"$f":"IF(N187>#REF!,\"\",#REF!)","v":{"$error":"#REF!"}},null,null,null,null,180,{"$f":"IF(V187>#REF!,\"\",$T$7)","v":{"$error":"#REF!"}},{"$f":"IF(V187>=#REF!,\"\",IF(V187<=#REF!,#REF!,#REF!))","v":{"$error":"#REF!"}},{"$f":"IF(V187>#REF!,\"\",#REF!)","v":{"$error":"#REF!"}},null,null,null,null,null,null,null,180]
[181,{"$f":"IF(A188>=#REF!,\"\",IF(A188<=#REF!,#REF!,#REF!))","v":{"$error":"#REF!"}},{"$f":"IF(A188>=#REF!,\"\",IF(A188<=#REF!,#REF!,#REF!))","v":{"$error":"#REF!"}},{"$f":"IF(A188>#REF!,\"\",#REF!)","v":{"$error":"#REF!"}},null,181,{"$f":"IF(F188>=#REF!,\"\",IF(F188<=#REF!,#REF!,#REF!))","v":{"$error":"#REF!"}},{"$f":"IF(F188>=#REF!,\"\",IF(F188<=#REF!,#REF!,#REF!))","v":{"$error":"#REF!"}},{"$f":"IF(F188>#REF!,\"\",PMT(#REF!/12,#REF!,-#REF!))","v":{"$error":"#REF!"}},null,null,null,null,181,{"$f":"IF(N188>#REF!,\"\",$L$7)","v":{"$error":"#REF!"}},{"$f":"IF(N188>=#REF!,\"\",IF(N188<=#REF!,#REF!,#REF!))","v":{"$error":"#REF!"}},{"$f":"IF(N188>#REF!,\"\",#REF!)","v":{"$error":"#REF!"}},null,null,null,null,181,{"$f":"IF(V188>#REF!,\"\",$T$7)","v":{"$error":"#REF!"}},{"$f":"IF(V188>=#REF!,\"\",IF(V188<=#REF!,#REF!,#REF!))","v":{"$error":"#REF!"}},{"$f":"IF(V188>#REF!,\"\",#REF!)","v":{"$error":"#REF!"}},null,null,null,null,null,null,null,181]
[182,{"$f":"IF(A189>=#REF!,\"\",IF(A189<=#REF!,#REF!,#REF!))","v":{"$error":"#REF!"}},{"$f":"IF(A189>=#REF!,\"\",IF(A189<=#REF!,#REF!,#REF!))","v":{"$error":"#REF!"}},{"$f":"IF(A189>#REF!,\"\",#REF!)","v":{"$error":"#REF!"}},null,182,{"$f":"IF(F189>=#REF!,\"\",IF(F189<=#REF!,#REF!,#REF!))","v":{"$error":"#REF!"}},{"$f":"IF(F189>=#REF!,\"\",IF(F189<=#REF!,#REF!,#REF!))","v":{"$error":"#REF!"}},{"$f":"IF(F189>#REF!,\"\",PMT(#REF!/12,#REF!,-#REF!))","v":{"$error":"#REF!"}},null,null,null,null,182,{"$f":"IF(N189>#REF!,\"\",$L$7)","v":{"$error":"#REF!"}},{"$f":"IF(N189>=#REF!,\"\",IF(N189<=#REF!,#REF!,#REF!))","v":{"$error":"#REF!"}},{"$f":"IF(N189>#REF!,\"\",#REF!)","v":{"$error":"#REF!"}},null,null,null,null,182,{"$f":"IF(V189>#REF!,\"\",$T$7)","v":{"$error":"#REF!"}},{"$f":"IF(V189>=#REF!,\"\",IF(V189<=#REF!,#REF!,#REF!))","v":{"$error":"#REF!"}},{"$f":"IF(V189>#REF!,\"\",#REF!)","v":{"$error":"#REF!"}},null,null,null,null,null,null,null,182]
[183,{"$f":"IF(A190>=#REF!,\"\",IF(A190<=#REF!,#REF!,#REF!))","v":{"$error":"#REF!"}},{"$f":"IF(A190>=#REF!,\"\",IF(A190<=#REF!,#REF!,#REF!))","v":{"$error":"#REF!"}},{"$f":"IF(A190>#REF!,\"\",#REF!)","v":{"$error":"#REF!"}},null,183,{"$f":"IF(F190>=#REF!,\"\",IF(F190<=#REF!,#REF!,#REF!))","v":{"$error":"#REF!"}},{"$f":"IF(F190>=#REF!,\"\",IF(F190<=#REF!,#REF!,#REF!))","v":{"$error":"#REF!"}},{"$f":"IF(F190>#REF!,\"\",PMT(#REF!/12,#REF!,-#REF!))","v":{"$error":"#REF!"}},null,null,null,null,183,{"$f":"IF(N190>#REF!,\"\",$L$7)","v":{"$error":"#REF!"}},{"$f":"IF(N190>=#REF!,\"\",IF(N190<=#REF!,#REF!,#REF!))","v":{"$error":"#REF!"}},{"$f":"IF(N190>#REF!,\"\",#REF!)","v":{"$error":"#REF!"}},null,null,null,null,183,{"$f":"IF(V190>#REF!,\"\",$T$7)","v":{"$error":"#REF!"}},{"$f":"IF(V190>=#REF!,\"\",IF(V190<=#REF!,#REF!,#REF!))","v":{"$error":"#REF!"}},{"$f":"IF(V190>#REF!,\"\",#REF!)","v":{"$error":"#REF!"}},null,null,null,null,null,null,null,183]
[184,{"$f":"IF(A191>=#REF!,\"\",IF(A191<=#REF!,#REF!,#REF!))","v":{"$error":"#REF!"}},{"$f":"IF(A191>=#REF!,\"\",IF(A191<=#REF!,#REF!,#REF!))","v":{"$error":"#REF!"}},{"$f":"IF(A191>#REF!,\"\",#REF!)","v":{"$error":"#REF!"}},null,184,{"$f":"IF(F191>=#REF!,\"\",IF(F191<=#REF!,#REF!,#REF!))","v":{"$error":"#REF!"}},{"$f":"IF(F191>=#REF!,\"\",IF(F191<=#REF!,#REF!,#REF!))","v":{"$error":"#REF!"}},{"$f":"IF(F191>#REF!,\"\",PMT(#REF!/12,#REF!,-#REF!))","v":{"$error":"#REF!"}},null,null,null,null,184,{"$f":"IF(N191>#REF!,\"\",$L$7)","v":{"$error":"#REF!"}},{"$f":"IF(N191>=#REF!,\"\",IF(N191<=#REF!,#REF!,#REF!))","v":{"$error":"#REF!"}},{"$f":"IF(N191>#REF!,\"\",#REF!)","v":{"$error":"#REF!"}},null,null,null,null,184,{"$f":"IF(V191>#REF!,\"\",$T$7)","v":{"$error":"#REF!"}},{"$f":"IF(V191>=#REF!,\"\",IF(V191<=#REF!,#REF!,#REF!))","v":{"$error":"#REF!"}},{"$f":"IF(V191>#REF!,\"\",#REF!)","v":{"$error":"#REF!"}},null,null,null,null,null,null,null,184]
[185,{"$f":"IF(A192>=#REF!,\"\",IF(A192<=#REF!,#REF!,#REF!))","v":{"$error":"#REF!"}},{"$f":"IF(A192>=#REF!,\"\",IF(A192<=#REF!,#REF!,#REF!))","v":{"$error":"#REF!"}},{"$f":"IF(A192>#REF!,\"\",#REF!)","v":{"$error":"#REF!"}},null,185,{"$f":"IF(F192>=#REF!,\"\",IF(F192<=#REF!,#REF!,#REF!))","v":{"$error":"#REF!"}},{"$f":"IF(F192>=#REF!,\"\",IF(F192<=#REF!,#REF!,#REF!))","v":{"$error":"#REF!"}},{"$f":"IF(F192>#REF!,\"\",PMT(#REF!/12,#REF!,-#REF!))","v":{"$error":"#REF!"}},null,null,null,null,185,{"$f":"IF(N192>#REF!,\"\",$L$7)","v":{"$error":"#REF!"}},{"$f":"IF(N192>=#REF!,\"\",IF(N192<=#REF!,#REF!,#REF!))","v":{"$error":"#REF!"}},{"$f":"IF(N192>#REF!,\"\",#REF!)","v":{"$error":"#REF!"}},null,null,null,null,185,{"$f":"IF(V192>#REF!,\"\",$T$7)","v":{"$error":"#REF!"}},{"$f":"IF(V192>=#REF!,\"\",IF(V192<=#REF!,#REF!,#REF!))","v":{"$error":"#REF!"}},{"$f":"IF(V192>#REF!,\"\",#REF!)","v":{"$error":"#REF!"}},null,null,null,null,null,null,null,185]
[186,{"$f":"IF(A193>=#REF!,\"\",IF(A193<=#REF!,#REF!,#REF!))","v":{"$error":"#REF!"}},{"$f":"IF(A193>=#REF!,\"\",IF(A193<=#REF!,#REF!,#REF!))","v":{"$error":"#REF!"}},{"$f":"IF(A193>#REF!,\"\",#REF!)","v":{"$error":"#REF!"}},null,186,{"$f":"IF(F193>=#REF!,\"\",IF(F193<=#REF!,#REF!,#REF!))","v":{"$error":"#REF!"}},{"$f":"IF(F193>=#REF!,\"\",IF(F193<=#REF!,#REF!,#REF!))","v":{"$error":"#REF!"}},{"$f":"IF(F193>#REF!,\"\",PMT(#REF!/12,#REF!,-#REF!))","v":{"$error":"#REF!"}},null,null,null,null,186,{"$f":"IF(N193>#REF!,\"\",$L$7)","v":{"$error":"#REF!"}},{"$f":"IF(N193>=#REF!,\"\",IF(N193<=#REF!,#REF!,#REF!))","v":{"$error":"#REF!"}},{"$f":"IF(N193>#REF!,\"\",#REF!)","v":{"$error":"#REF!"}},null,null,null,null,186,{"$f":"IF(V193>#REF!,\"\",$T$7)","v":{"$error":"#REF!"}},{"$f":"IF(V193>=#REF!,\"\",IF(V193<=#REF!,#REF!,#REF!))","v":{"$error":"#REF!"}},{"$f":"IF(V193>#REF!,\"\",#REF!)","v":{"$error":"#REF!"}},null,null,null,null,null,null,null,186]
[187,{"$f":"IF(A194>=#REF!,\"\",IF(A194<=#REF!,#REF!,#REF!))","v":{"$error":"#REF!"}},{"$f":"IF(A194>=#REF!,\"\",IF(A194<=#REF!,#REF!,#REF!))","v":{"$error":"#REF!"}},{"$f":"IF(A194>#REF!,\"\",#REF!)","v":{"$error":"#REF!"}},null,187,{"$f":"IF(F194>=#REF!,\"\",IF(F194<=#REF!,#REF!,#REF!))","v":{"$error":"#REF!"}},{"$f":"IF(F194>=#REF!,\"\",IF(F194<=#REF!,#REF!,#REF!))","v":{"$error":"#REF!"}},{"$f":"IF(F194>#REF!,\"\",PMT(#REF!/12,#REF!,-#REF!))","v":{"$error":"#REF!"}},null,null,null,null,187,{"$f":"IF(N194>#REF!,\"\",$L$7)","v":{"$error":"#REF!"}},{"$f":"IF(N194>=#REF!,\"\",IF(N194<=#REF!,#REF!,#REF!))","v":{"$error":"#REF!"}},{"$f":"IF(N194>#REF!,\"\",#REF!)","v":{"$error":"#REF!"}},null,null,null,null,187,{"$f":"IF(V194>#REF!,\"\",$T$7)","v":{"$error":"#REF!"}},{"$f":"IF(V194>=#REF!,\"\",IF(V194<=#REF!,#REF!,#REF!))","v":{"$error":"#REF!"}},{"$f":"IF(V194>#REF!,\"\",#REF!)","v":{"$error":"#REF!"}},null,null,null,null,null,null,null,187]
[188,{"$f":"IF(A195>=#REF!,\"\",IF(A195<=#REF!,#REF!,#REF!))","v":{"$error":"#REF!"}},{"$f":"IF(A195>=#REF!,\"\",IF(A195<=#REF!,#REF!,#REF!))","v":{"$error":"#REF!"}},{"$f":"IF(A195>#REF!,\"\",#REF!)","v":{"$error":"#REF!"}},null,188,{"$f":"IF(F195>=#REF!,\"\",IF(F195<=#REF!,#REF!,#REF!))","v":{"$error":"#REF!"}},{"$f":"IF(F195>=#REF!,\"\",IF(F195<=#REF!,#REF!,#REF!))","v":{"$error":"#REF!"}},{"$f":"IF(F195>#REF!,\"\",PMT(#REF!/12,#REF!,-#REF!))","v":{"$error":"#REF!"}},null,null,null,null,188,{"$f":"IF(N195>#REF!,\"\",$L$7)","v":{"$error":"#REF!"}},{"$f":"IF(N195>=#REF!,\"\",IF(N195<=#REF!,#REF!,#REF!))","v":{"$error":"#REF!"}},{"$f":"IF(N195>#REF!,\"\",#REF!)","v":{"$error":"#REF!"}},null,null,null,null,188,{"$f":"IF(V195>#REF!,\"\",$T$7)","v":{"$error":"#REF!"}},{"$f":"IF(V195>=#REF!,\"\",IF(V195<=#REF!,#REF!,#REF!))","v":{"$error":"#REF!"}},{"$f":"IF(V195>#REF!,\"\",#REF!)","v":{"$error":"#REF!"}},null,null,null,null,null,null,null,188]
[189,{"$f":"IF(A196>=#REF!,\"\",IF(A196<=#REF!,#REF!,#REF!))","v":{"$error":"#REF!"}},{"$f":"IF(A196>=#REF!,\"\",IF(A196<=#REF!,#REF!,#REF!))","v":{"$error":"#REF!"}},{"$f":"IF(A196>#REF!,\"\",#REF!)","v":{"$error":"#REF!"}},null,189,{"$f":"IF(F196>=#REF!,\"\",IF(F196<=#REF!,#REF!,#REF!))","v":{"$error":"#REF!"}},{"$f":"IF(F196>=#REF!,\"\",IF(F196<=#REF!,#REF!,#REF!))","v":{"$error":"#REF!"}},{"$f":"IF(F196>#REF!,\"\",PMT(#REF!/12,#REF!,-#REF!))","v":{"$error":"#REF!"}},null,null,null,null,189,{"$f":"IF(N196>#REF!,\"\",$L$7)","v":{"$error":"#REF!"}},{"$f":"IF(N196>=#REF!,\"\",IF(N196<=#REF!,#REF!,#REF!))","v":{"$error":"#REF!"}},{"$f":"IF(N196>#REF!,\"\",#REF!)","v":{"$error":"#REF!"}},null,null,null,null,189,{"$f":"IF(V196>#REF!,\"\",$T$7)","v":{"$error":"#REF!"}},{"$f":"IF(V196>=#REF!,\"\",IF(V196<=#REF!,#REF!,#REF!))","v":{"$error":"#REF!"}},{"$f":"IF(V196>#REF!,\"\",#REF!)","v":{"$error":"#REF!"}},null,null,null,null,null,null,null,189]
[190,{"$f":"IF(A197>=#REF!,\"\",IF(A197<=#REF!,#REF!,#REF!))","v":{"$error":"#REF!"}},{"$f":"IF(A197>=#REF!,\"\",IF(A197<=#REF!,#REF!,#REF!))","v":{"$error":"#REF!"}},{"$f":"IF(A197>#REF!,\"\",#REF!)","v":{"$error":"#REF!"}},null,190,{"$f":"IF(F197>=#REF!,\"\",IF(F197<=#REF!,#REF!,#REF!))","v":{"$error":"#REF!"}},{"$f":"IF(F197>=#REF!,\"\",IF(F197<=#REF!,#REF!,#REF!))","v":{"$error":"#REF!"}},{"$f":"IF(F197>#REF!,\"\",PMT(#REF!/12,#REF!,-#REF!))","v":{"$error":"#REF!"}},null,null,null,null,190,{"$f":"IF(N197>#REF!,\"\",$L$7)","v":{"$error":"#REF!"}},{"$f":"IF(N197>=#REF!,\"\",IF(N197<=#REF!,#REF!,#REF!))","v":{"$error":"#REF!"}},{"$f":"IF(N197>#REF!,\"\",#REF!)","v":{"$error":"#REF!"}},null,null,null,null,190,{"$f":"IF(V197>#REF!,\"\",$T$7)","v":{"$error":"#REF!"}},{"$f":"IF(V197>=#REF!,\"\",IF(V197<=#REF!,#REF!,#REF!))","v":{"$error":"#REF!"}},{"$f":"IF(V197>#REF!,\"\",#REF!)","v":{"$error":"#REF!"}},null,null,null,null,null,null,null,190]
[191,{"$f":"IF(A198>=#REF!,\"\",IF(A198<=#REF!,#REF!,#REF!))","v":{"$error":"#REF!"}},{"$f":"IF(A198>=#REF!,\"\",IF(A198<=#REF!,#REF!,#REF!))","v":{"$error":"#REF!"}},{"$f":"IF(A198>#REF!,\"\",#REF!)","v":{"$error":"#REF!"}},null,191,{"$f":"IF(F198>=#REF!,\"\",IF(F198<=#REF!,#REF!,#REF!))","v":{"$error":"#REF!"}},{"$f":"IF(F198>=#REF!,\"\",IF(F198<=#REF!,#REF!,#REF!))","v":{"$error":"#REF!"}},{"$f":"IF(F198>#REF!,\"\",PMT(#REF!/12,#REF!,-#REF!))","v":{"$error":"#REF!"}},null,null,null,null,191,{"$f":"IF(N198>#REF!,\"\",$L$7)","v":{"$error":"#REF!"}},{"$f":"IF(N198>=#REF!,\"\",IF(N198<=#REF!,#REF!,#REF!))","v":{"$error":"#REF!"}},{"$f":"IF(N198>#REF!,\"\",#REF!)","v":{"$error":"#REF!"}},null,null,null,null,191,{"$f":"IF(V198>#REF!,\"\",$T$7)","v":{"$error":"#REF!"}},{"$f":"IF(V198>=#REF!,\"\",IF(V198<=#REF!,#REF!,#REF!))","v":{"$error":"#REF!"}},{"$f":"IF(V198>#REF!,\"\",#REF!)","v":{"$error":"#REF!"}},null,null,null,null,null,null,null,191]
[192,{"$f":"IF(A199>=#REF!,\"\",IF(A199<=#REF!,#REF!,#REF!))","v":{"$error":"#REF!"}},{"$f":"IF(A199>=#REF!,\"\",IF(A199<=#REF!,#REF!,#REF!))","v":{"$error":"#REF!"}},{"$f":"IF(A199>#REF!,\"\",#REF!)","v":{"$error":"#REF!"}},null,192,{"$f":"IF(F199>=#REF!,\"\",IF(F199<=#REF!,#REF!,#REF!))","v":{"$error":"#REF!"}},{"$f":"IF(F199>=#REF!,\"\",IF(F199<=#REF!,#REF!,#REF!))","v":{"$error":"#REF!"}},{"$f":"IF(F199>#REF!,\"\",PMT(#REF!/12,#REF!,-#REF!))","v":{"$error":"#REF!"}},null,null,null,null,192,{"$f":"IF(N199>#REF!,\"\",$L$7)","v":{"$error":"#REF!"}},{"$f":"IF(N199>=#REF!,\"\",IF(N199<=#REF!,#REF!,#REF!))","v":{"$error":"#REF!"}},{"$f":"IF(N199>#REF!,\"\",#REF!)","v":{"$error":"#REF!"}},null,null,null,null,192,{"$f":"IF(V199>#REF!,\"\",$T$7)","v":{"$error":"#REF!"}},{"$f":"IF(V199>=#REF!,\"\",IF(V199<=#REF!,#REF!,#REF!))","v":{"$error":"#REF!"}},{"$f":"IF(V199>#REF!,\"\",#REF!)","v":{"$error":"#REF!"}},null,null,null,null,null,null,null,192]
[193,{"$f":"IF(A200>=#REF!,\"\",IF(A200<=#REF!,#REF!,#REF!))","v":{"$error":"#REF!"}},{"$f":"IF(A200>=#REF!,\"\",IF(A200<=#REF!,#REF!,#REF!))","v":{"$error":"#REF!"}},{"$f":"IF(A200>#REF!,\"\",#REF!)","v":{"$error":"#REF!"}},null,193,{"$f":"IF(F200>=#REF!,\"\",IF(F200<=#REF!,#REF!,#REF!))","v":{"$error":"#REF!"}},{"$f":"IF(F200>=#REF!,\"\",IF(F200<=#REF!,#REF!,#REF!))","v":{"$error":"#REF!"}},{"$f":"IF(F200>#REF!,\"\",PMT(#REF!/12,#REF!,-#REF!))","v":{"$error":"#REF!"}},null,null,null,null,193,{"$f":"IF(N200>#REF!,\"\",$L$7)","v":{"$error":"#REF!"}},{"$f":"IF(N200>=#REF!,\"\",IF(N200<=#REF!,#REF!,#REF!))","v":{"$error":"#REF!"}},{"$f":"IF(N200>#REF!,\"\",#REF!)","v":{"$error":"#REF!"}},null,null,null,null,193,{"$f":"IF(V200>#REF!,\"\",$T$7)","v":{"$error":"#REF!"}},{"$f":"IF(V200>=#REF!,\"\",IF(V200<=#REF!,#REF!,#REF!))","v":{"$error":"#REF!"}},{"$f":"IF(V200>#REF!,\"\",#REF!)","v":{"$error":"#REF!"}},null,null,null,null,null,null,null,193]
[194,{"$f":"IF(A201>=#REF!,\"\",IF(A201<=#REF!,#REF!,#REF!))","v":{"$error":"#REF!"}},{"$f":"IF(A201>=#REF!,\"\",IF(A201<=#REF!,#REF!,#REF!))","v":{"$error":"#REF!"}},{"$f":"IF(A201>#REF!,\"\",#REF!)","v":{"$error":"#REF!"}},null,194,{"$f":"IF(F201>=#REF!,\"\",IF(F201<=#REF!,#REF!,#REF!))","v":{"$error":"#REF!"}},{"$f":"IF(F201>=#REF!,\"\",IF(F201<=#REF!,#REF!,#REF!))","v":{"$error":"#REF!"}},{"$f":"IF(F201>#REF!,\"\",PMT(#REF!/12,#REF!,-#REF!))","v":{"$error":"#REF!"}},null,null,null,null,194,{"$f":"IF(N201>#REF!,\"\",$L$7)","v":{"$error":"#REF!"}},{"$f":"IF(N201>=#REF!,\"\",IF(N201<=#REF!,#REF!,#REF!))","v":{"$error":"#REF!"}},{"$f":"IF(N201>#REF!,\"\",#REF!)","v":{"$error":"#REF!"}},null,null,null,null,194,{"$f":"IF(V201>#REF!,\"\",$T$7)","v":{"$error":"#REF!"}},{"$f":"IF(V201>=#REF!,\"\",IF(V201<=#REF!,#REF!,#REF!))","v":{"$error":"#REF!"}},{"$f":"IF(V201>#REF!,\"\",#REF!)","v":{"$error":"#REF!"}},null,null,null,null,null,null,null,194]
[195,{"$f":"IF(A202>=#REF!,\"\",IF(A202<=#REF!,#REF!,#REF!))","v":{"$error":"#REF!"}},{"$f":"IF(A202>=#REF!,\"\",IF(A202<=#REF!,#REF!,#REF!))","v":{"$error":"#REF!"}},{"$f":"IF(A202>#REF!,\"\",#REF!)","v":{"$error":"#REF!"}},null,195,{"$f":"IF(F202>=#REF!,\"\",IF(F202<=#REF!,#REF!,#REF!))","v":{"$error":"#REF!"}},{"$f":"IF(F202>=#REF!,\"\",IF(F202<=#REF!,#REF!,#REF!))","v":{"$error":"#REF!"}},{"$f":"IF(F202>#REF!,\"\",PMT(#REF!/12,#REF!,-#REF!))","v":{"$error":"#REF!"}},null,null,null,null,195,{"$f":"IF(N202>#REF!,\"\",$L$7)","v":{"$error":"#REF!"}},{"$f":"IF(N202>=#REF!,\"\",IF(N202<=#REF!,#REF!,#REF!))","v":{"$error":"#REF!"}},{"$f":"IF(N202>#REF!,\"\",#REF!)","v":{"$error":"#REF!"}},null,null,null,null,195,{"$f":"IF(V202>#REF!,\"\",$T$7)","v":{"$error":"#REF!"}},{"$f":"IF(V202>=#REF!,\"\",IF(V202<=#REF!,#REF!,#REF!))","v":{"$error":"#REF!"}},{"$f":"IF(V202>#REF!,\"\",#REF!)","v":{"$error":"#REF!"}},null,null,null,null,null,null,null,195]
[196,{"$f":"IF(A203>=#REF!,\"\",IF(A203<=#REF!,#REF!,#REF!))","v":{"$error":"#REF!"}},{"$f":"IF(A203>=#REF!,\"\",IF(A203<=#REF!,#REF!,#REF!))","v":{"$error":"#REF!"}},{"$f":"IF(A203>#REF!,\"\",#REF!)","v":{"$error":"#REF!"}},null,196,{"$f":"IF(F203>=#REF!,\"\",IF(F203<=#REF!,#REF!,#REF!))","v":{"$error":"#REF!"}},{"$f":"IF(F203>=#REF!,\"\",IF(F203<=#REF!,#REF!,#REF!))","v":{"$error":"#REF!"}},{"$f":"IF(F203>#REF!,\"\",PMT(#REF!/12,#REF!,-#REF!))","v":{"$error":"#REF!"}},null,null,null,null,196,{"$f":"IF(N203>#REF!,\"\",$L$7)","v":{"$error":"#REF!"}},{"$f":"IF(N203>=#REF!,\"\",IF(N203<=#REF!,#REF!,#REF!))","v":{"$error":"#REF!"}},{"$f":"IF(N203>#REF!,\"\",#REF!)","v":{"$error":"#REF!"}},null,null,null,null,196,{"$f":"IF(V203>#REF!,\"\",$T$7)","v":{"$error":"#REF!"}},{"$f":"IF(V203>=#REF!,\"\",IF(V203<=#REF!,#REF!,#REF!))","v":{"$error":"#REF!"}},{"$f":"IF(V203>#REF!,\"\",#REF!)","v":{"$error":"#REF!"}},null,null,null,null,null,null,null,196]
[197,{"$f":"IF(A204>=#REF!,\"\",IF(A204<=#REF!,#REF!,#REF!))","v":{"$error":"#REF!"}},{"$f":"IF(A204>=#REF!,\"\",IF(A204<=#REF!,#REF!,#REF!))","v":{"$error":"#REF!"}},{"$f":"IF(A204>#REF!,\"\",#REF!)","v":{"$error":"#REF!"}},null,197,{"$f":"IF(F204>=#REF!,\"\",IF(F204<=#REF!,#REF!,#REF!))","v":{"$error":"#REF!"}},{"$f":"IF(F204>=#REF!,\"\",IF(F204<=#REF!,#REF!,#REF!))","v":{"$error":"#REF!"}},{"$f":"IF(F204>#REF!,\"\",PMT(#REF!/12,#REF!,-#REF!))","v":{"$error":"#REF!"}},null,null,null,null,197,{"$f":"IF(N204>#REF!,\"\",$L$7)","v":{"$error":"#REF!"}},{"$f":"IF(N204>=#REF!,\"\",IF(N204<=#REF!,#REF!,#REF!))","v":{"$error":"#REF!"}},{"$f":"IF(N204>#REF!,\"\",#REF!)","v":{"$error":"#REF!"}},null,null,null,null,197,{"$f":"IF(V204>#REF!,\"\",$T$7)","v":{"$error":"#REF!"}},{"$f":"IF(V204>=#REF!,\"\",IF(V204<=#REF!,#REF!,#REF!))","v":{"$error":"#REF!"}},{"$f":"IF(V204>#REF!,\"\",#REF!)","v":{"$error":"#REF!"}},null,null,null,null,null,null,null,197]
[198,{"$f":"IF(A205>=#REF!,\"\",IF(A205<=#REF!,#REF!,#REF!))","v":{"$error":"#REF!"}},{"$f":"IF(A205>=#REF!,\"\",IF(A205<=#REF!,#REF!,#REF!))","v":{"$error":"#REF!"}},{"$f":"IF(A205>#REF!,\"\",#REF!)","v":{"$error":"#REF!"}},null,198,{"$f":"IF(F205>=#REF!,\"\",IF(F205<=#REF!,#REF!,#REF!))","v":{"$error":"#REF!"}},{"$f":"IF(F205>=#REF!,\"\",IF(F205<=#REF!,#REF!,#REF!))","v":{"$error":"#REF!"}},{"$f":"IF(F205>#REF!,\"\",PMT(#REF!/12,#REF!,-#REF!))","v":{"$error":"#REF!"}},null,null,null,null,198,{"$f":"IF(N205>#REF!,\"\",$L$7)","v":{"$error":"#REF!"}},{"$f":"IF(N205>=#REF!,\"\",IF(N205<=#REF!,#REF!,#REF!))","v":{"$error":"#REF!"}},{"$f":"IF(N205>#REF!,\"\",#REF!)","v":{"$error":"#REF!"}},null,null,null,null,198,{"$f":"IF(V205>#REF!,\"\",$T$7)","v":{"$error":"#REF!"}},{"$f":"IF(V205>=#REF!,\"\",IF(V205<=#REF!,#REF!,#REF!))","v":{"$error":"#REF!"}},{"$f":"IF(V205>#REF!,\"\",#REF!)","v":{"$error":"#REF!"}},null,null,null,null,null,null,null,198]
[199,{"$f":"IF(A206>=#REF!,\"\",IF(A206<=#REF!,#REF!,#REF!))","v":{"$error":"#REF!"}},{"$f":"IF(A206>=#REF!,\"\",IF(A206<=#REF!,#REF!,#REF!))","v":{"$error":"#REF!"}},{"$f":"IF(A206>#REF!,\"\",#REF!)","v":{"$error":"#REF!"}},null,199,{"$f":"IF(F206>=#REF!,\"\",IF(F206<=#REF!,#REF!,#REF!))","v":{"$error":"#REF!"}},{"$f":"IF(F206>=#REF!,\"\",IF(F206<=#REF!,#REF!,#REF!))","v":{"$error":"#REF!"}},{"$f":"IF(F206>#REF!,\"\",PMT(#REF!/12,#REF!,-#REF!))","v":{"$error":"#REF!"}},null,null,null,null,199,{"$f":"IF(N206>#REF!,\"\",$L$7)","v":{"$error":"#REF!"}},{"$f":"IF(N206>=#REF!,\"\",IF(N206<=#REF!,#REF!,#REF!))","v":{"$error":"#REF!"}},{"$f":"IF(N206>#REF!,\"\",#REF!)","v":{"$error":"#REF!"}},null,null,null,null,199,{"$f":"IF(V206>#REF!,\"\",$T$7)","v":{"$error":"#REF!"}},{"$f":"IF(V206>=#REF!,\"\",IF(V206<=#REF!,#REF!,#REF!))","v":{"$error":"#REF!"}},{"$f":"IF(V206>#REF!,\"\",#REF!)","v":{"$error":"#REF!"}},null,null,null,null,null,null,null,199]
[200,{"$f":"IF(A207>=#REF!,\"\",IF(A207<=#REF!,#REF!,#REF!))","v":{"$error":"#REF!"}},{"$f":"IF(A207>=#REF!,\"\",IF(A207<=#REF!,#REF!,#REF!))","v":{"$error":"#REF!"}},{"$f":"IF(A207>#REF!,\"\",#REF!)","v":{"$error":"#REF!"}},null,200,{"$f":"IF(F207>=#REF!,\"\",IF(F207<=#REF!,#REF!,#REF!))","v":{"$error":"#REF!"}},{"$f":"IF(F207>=#REF!,\"\",IF(F207<=#REF!,#REF!,#REF!))","v":{"$error":"#REF!"}},{"$f":"IF(F207>#REF!,\"\",PMT(#REF!/12,#REF!,-#REF!))","v":{"$error":"#REF!"}},null,null,null,null,200,{"$f":"IF(N207>#REF!,\"\",$L$7)","v":{"$error":"#REF!"}},{"$f":"IF(N207>=#REF!,\"\",IF(N207<=#REF!,#REF!,#REF!))","v":{"$error":"#REF!"}},{"$f":"IF(N207>#REF!,\"\",#REF!)","v":{"$error":"#REF!"}},null,null,null,null,200,{"$f":"IF(V207>#REF!,\"\",$T$7)","v":{"$error":"#REF!"}},{"$f":"IF(V207>=#REF!,\"\",IF(V207<=#REF!,#REF!,#REF!))","v":{"$error":"#REF!"}},{"$f":"IF(V207>#REF!,\"\",#REF!)","v":{"$error":"#REF!"}},null,null,null,null,null,null,null,200]
[201,{"$f":"IF(A208>=#REF!,\"\",IF(A208<=#REF!,#REF!,#REF!))","v":{"$error":"#REF!"}},{"$f":"IF(A208>=#REF!,\"\",IF(A208<=#REF!,#REF!,#REF!))","v":{"$error":"#REF!"}},{"$f":"IF(A208>#REF!,\"\",#REF!)","v":{"$error":"#REF!"}},null,201,{"$f":"IF(F208>=#REF!,\"\",IF(F208<=#REF!,#REF!,#REF!))","v":{"$error":"#REF!"}},{"$f":"IF(F208>=#REF!,\"\",IF(F208<=#REF!,#REF!,#REF!))","v":{"$error":"#REF!"}},{"$f":"IF(F208>#REF!,\"\",PMT(#REF!/12,#REF!,-#REF!))","v":{"$error":"#REF!"}},null,null,null,null,201,{"$f":"IF(N208>#REF!,\"\",$L$7)","v":{"$error":"#REF!"}},{"$f":"IF(N208>=#REF!,\"\",IF(N208<=#REF!,#REF!,#REF!))","v":{"$error":"#REF!"}},{"$f":"IF(N208>#REF!,\"\",#REF!)","v":{"$error":"#REF!"}},null,null,null,null,201,{"$f":"IF(V208>#REF!,\"\",$T$7)","v":{"$error":"#REF!"}},{"$f":"IF(V208>=#REF!,\"\",IF(V208<=#REF!,#REF!,#REF!))","v":{"$error":"#REF!"}},{"$f":"IF(V208>#REF!,\"\",#REF!)","v":{"$error":"#REF!"}},null,null,null,null,null,null,null,201]
[202,{"$f":"IF(A209>=#REF!,\"\",IF(A209<=#REF!,#REF!,#REF!))","v":{"$error":"#REF!"}},{"$f":"IF(A209>=#REF!,\"\",IF(A209<=#REF!,#REF!,#REF!))","v":{"$error":"#REF!"}},{"$f":"IF(A209>#REF!,\"\",#REF!)","v":{"$error":"#REF!"}},null,202,{"$f":"IF(F209>=#REF!,\"\",IF(F209<=#REF!,#REF!,#REF!))","v":{"$error":"#REF!"}},{"$f":"IF(F209>=#REF!,\"\",IF(F209<=#REF!,#REF!,#REF!))","v":{"$error":"#REF!"}},{"$f":"IF(F209>#REF!,\"\",PMT(#REF!/12,#REF!,-#REF!))","v":{"$error":"#REF!"}},null,null,null,null,202,{"$f":"IF(N209>#REF!,\"\",$L$7)","v":{"$error":"#REF!"}},{"$f":"IF(N209>=#REF!,\"\",IF(N209<=#REF!,#REF!,#REF!))","v":{"$error":"#REF!"}},{"$f":"IF(N209>#REF!,\"\",#REF!)","v":{"$error":"#REF!"}},null,null,null,null,202,{"$f":"IF(V209>#REF!,\"\",$T$7)","v":{"$error":"#REF!"}},{"$f":"IF(V209>=#REF!,\"\",IF(V209<=#REF!,#REF!,#REF!))","v":{"$error":"#REF!"}},{"$f":"IF(V209>#REF!,\"\",#REF!)","v":{"$error":"#REF!"}},null,null,null,null,null,null,null,202]
[203,{"$f":"IF(A210>=#REF!,\"\",IF(A210<=#REF!,#REF!,#REF!))","v":{"$error":"#REF!"}},{"$f":"IF(A210>=#REF!,\"\",IF(A210<=#REF!,#REF!,#REF!))","v":{"$error":"#REF!"}},{"$f":"IF(A210>#REF!,\"\",#REF!)","v":{"$error":"#REF!"}},null,203,{"$f":"IF(F210>=#REF!,\"\",IF(F210<=#REF!,#REF!,#REF!))","v":{"$error":"#REF!"}},{"$f":"IF(F210>=#REF!,\"\",IF(F210<=#REF!,#REF!,#REF!))","v":{"$error":"#REF!"}},{"$f":"IF(F210>#REF!,\"\",PMT(#REF!/12,#REF!,-#REF!))","v":{"$error":"#REF!"}},null,null,null,null,203,{"$f":"IF(N210>#REF!,\"\",$L$7)","v":{"$error":"#REF!"}},{"$f":"IF(N210>=#REF!,\"\",IF(N210<=#REF!,#REF!,#REF!))","v":{"$error":"#REF!"}},{"$f":"IF(N210>#REF!,\"\",#REF!)","v":{"$error":"#REF!"}},null,null,null,null,203,{"$f":"IF(V210>#REF!,\"\",$T$7)","v":{"$error":"#REF!"}},{"$f":"IF(V210>=#REF!,\"\",IF(V210<=#REF!,#REF!,#REF!))","v":{"$error":"#REF!"}},{"$f":"IF(V210>#REF!,\"\",#REF!)","v":{"$error":"#REF!"}},null,null,null,null,null,null,null,203]
[204,{"$f":"IF(A211>=#REF!,\"\",IF(A211<=#REF!,#REF!,#REF!))","v":{"$error":"#REF!"}},{"$f":"IF(A211>=#REF!,\"\",IF(A211<=#REF!,#REF!,#REF!))","v":{"$error":"#REF!"}},{"$f":"IF(A211>#REF!,\"\",#REF!)","v":{"$error":"#REF!"}},null,204,{"$f":"IF(F211>=#REF!,\"\",IF(F211<=#REF!,#REF!,#REF!))","v":{"$error":"#REF!"}},{"$f":"IF(F211>=#REF!,\"\",IF(F211<=#REF!,#REF!,#REF!))","v":{"$error":"#REF!"}},{"$f":"IF(F211>#REF!,\"\",PMT(#REF!/12,#REF!,-#REF!))","v":{"$error":"#REF!"}},null,null,null,null,204,{"$f":"IF(N211>#REF!,\"\",$L$7)","v":{"$error":"#REF!"}},{"$f":"IF(N211>=#REF!,\"\",IF(N211<=#REF!,#REF!,#REF!))","v":{"$error":"#REF!"}},{"$f":"IF(N211>#REF!,\"\",#REF!)","v":{"$error":"#REF!"}},null,null,null,null,204,{"$f":"IF(V211>#REF!,\"\",$T$7)","v":{"$error":"#REF!"}},{"$f":"IF(V211>=#REF!,\"\",IF(V211<=#REF!,#REF!,#REF!))","v":{"$error":"#REF!"}},{"$f":"IF(V211>#REF!,\"\",#REF!)","v":{"$error":"#REF!"}},null,null,null,null,null,null,null,204]
[205,{"$f":"IF(A212>=#REF!,\"\",IF(A212<=#REF!,#REF!,#REF!))","v":{"$error":"#REF!"}},{"$f":"IF(A212>=#REF!,\"\",IF(A212<=#REF!,#REF!,#REF!))","v":{"$error":"#REF!"}},{"$f":"IF(A212>#REF!,\"\",#REF!)","v":{"$error":"#REF!"}},null,205,{"$f":"IF(F212>=#REF!,\"\",IF(F212<=#REF!,#REF!,#REF!))","v":{"$error":"#REF!"}},{"$f":"IF(F212>=#REF!,\"\",IF(F212<=#REF!,#REF!,#REF!))","v":{"$error":"#REF!"}},{"$f":"IF(F212>#REF!,\"\",PMT(#REF!/12,#REF!,-#REF!))","v":{"$error":"#REF!"}},null,null,null,null,205,{"$f":"IF(N212>#REF!,\"\",$L$7)","v":{"$error":"#REF!"}},{"$f":"IF(N212>=#REF!,\"\",IF(N212<=#REF!,#REF!,#REF!))","v":{"$error":"#REF!"}},{"$f":"IF(N212>#REF!,\"\",#REF!)","v":{"$error":"#REF!"}},null,null,null,null,205,{"$f":"IF(V212>#REF!,\"\",$T$7)","v":{"$error":"#REF!"}},{"$f":"IF(V212>=#REF!,\"\",IF(V212<=#REF!,#REF!,#REF!))","v":{"$error":"#REF!"}},{"$f":"IF(V212>#REF!,\"\",#REF!)","v":{"$error":"#REF!"}},null,null,null,null,null,null,null,205]
[206,{"$f":"IF(A213>=#REF!,\"\",IF(A213<=#REF!,#REF!,#REF!))","v":{"$error":"#REF!"}},{"$f":"IF(A213>=#REF!,\"\",IF(A213<=#REF!,#REF!,#REF!))","v":{"$error":"#REF!"}},{"$f":"IF(A213>#REF!,\"\",#REF!)","v":{"$error":"#REF!"}},null,206,{"$f":"IF(F213>=#REF!,\"\",IF(F213<=#REF!,#REF!,#REF!))","v":{"$error":"#REF!"}},{"$f":"IF(F213>=#REF!,\"\",IF(F213<=#REF!,#REF!,#REF!))","v":{"$error":"#REF!"}},{"$f":"IF(F213>#REF!,\"\",PMT(#REF!/12,#REF!,-#REF!))","v":{"$error":"#REF!"}},null,null,null,null,206,{"$f":"IF(N213>#REF!,\"\",$L$7)","v":{"$error":"#REF!"}},{"$f":"IF(N213>=#REF!,\"\",IF(N213<=#REF!,#REF!,#REF!))","v":{"$error":"#REF!"}},{"$f":"IF(N213>#REF!,\"\",#REF!)","v":{"$error":"#REF!"}},null,null,null,null,206,{"$f":"IF(V213>#REF!,\"\",$T$7)","v":{"$error":"#REF!"}},{"$f":"IF(V213>=#REF!,\"\",IF(V213<=#REF!,#REF!,#REF!))","v":{"$error":"#REF!"}},{"$f":"IF(V213>#REF!,\"\",#REF!)","v":{"$error":"#REF!"}},null,null,null,null,null,null,null,206]
[207,{"$f":"IF(A214>=#REF!,\"\",IF(A214<=#REF!,#REF!,#REF!))","v":{"$error":"#REF!"}},{"$f":"IF(A214>=#REF!,\"\",IF(A214<=#REF!,#REF!,#REF!))","v":{"$error":"#REF!"}},{"$f":"IF(A214>#REF!,\"\",#REF!)","v":{"$error":"#REF!"}},null,207,{"$f":"IF(F214>=#REF!,\"\",IF(F214<=#REF!,#REF!,#REF!))","v":{"$error":"#REF!"}},{"$f":"IF(F214>=#REF!,\"\",IF(F214<=#REF!,#REF!,#REF!))","v":{"$error":"#REF!"}},{"$f":"IF(F214>#REF!,\"\",PMT(#REF!/12,#REF!,-#REF!))","v":{"$error":"#REF!"}},null,null,null,null,207,{"$f":"IF(N214>#REF!,\"\",$L$7)","v":{"$error":"#REF!"}},{"$f":"IF(N214>=#REF!,\"\",IF(N214<=#REF!,#REF!,#REF!))","v":{"$error":"#REF!"}},{"$f":"IF(N214>#REF!,\"\",#REF!)","v":{"$error":"#REF!"}},null,null,null,null,207,{"$f":"IF(V214>#REF!,\"\",$T$7)","v":{"$error":"#REF!"}},{"$f":"IF(V214>=#REF!,\"\",IF(V214<=#REF!,#REF!,#REF!))","v":{"$error":"#REF!"}},{"$f":"IF(V214>#REF!,\"\",#REF!)","v":{"$error":"#REF!"}},null,null,null,null,null,null,null,207]
[208,{"$f":"IF(A215>=#REF!,\"\",IF(A215<=#REF!,#REF!,#REF!))","v":{"$error":"#REF!"}},{"$f":"IF(A215>=#REF!,\"\",IF(A215<=#REF!,#REF!,#REF!))","v":{"$error":"#REF!"}},{"$f":"IF(A215>#REF!,\"\",#REF!)","v":{"$error":"#REF!"}},null,208,{"$f":"IF(F215>=#REF!,\"\",IF(F215<=#REF!,#REF!,#REF!))","v":{"$error":"#REF!"}},{"$f":"IF(F215>=#REF!,\"\",IF(F215<=#REF!,#REF!,#REF!))","v":{"$error":"#REF!"}},{"$f":"IF(F215>#REF!,\"\",PMT(#REF!/12,#REF!,-#REF!))","v":{"$error":"#REF!"}},null,null,null,null,208,{"$f":"IF(N215>#REF!,\"\",$L$7)","v":{"$error":"#REF!"}},{"$f":"IF(N215>=#REF!,\"\",IF(N215<=#REF!,#REF!,#REF!))","v":{"$error":"#REF!"}},{"$f":"IF(N215>#REF!,\"\",#REF!)","v":{"$error":"#REF!"}},null,null,null,null,208,{"$f":"IF(V215>#REF!,\"\",$T$7)","v":{"$error":"#REF!"}},{"$f":"IF(V215>=#REF!,\"\",IF(V215<=#REF!,#REF!,#REF!))","v":{"$error":"#REF!"}},{"$f":"IF(V215>#REF!,\"\",#REF!)","v":{"$error":"#REF!"}},null,null,null,null,null,null,null,208]
[209,{"$f":"IF(A216>=#REF!,\"\",IF(A216<=#REF!,#REF!,#REF!))","v":{"$error":"#REF!"}},{"$f":"IF(A216>=#REF!,\"\",IF(A216<=#REF!,#REF!,#REF!))","v":{"$error":"#REF!"}},{"$f":"IF(A216>#REF!,\"\",#REF!)","v":{"$error":"#REF!"}},null,209,{"$f":"IF(F216>=#REF!,\"\",IF(F216<=#REF!,#REF!,#REF!))","v":{"$error":"#REF!"}},{"$f":"IF(F216>=#REF!,\"\",IF(F216<=#REF!,#REF!,#REF!))","v":{"$error":"#REF!"}},{"$f":"IF(F216>#REF!,\"\",PMT(#REF!/12,#REF!,-#REF!))","v":{"$error":"#REF!"}},null,null,null,null,209,{"$f":"IF(N216>#REF!,\"\",$L$7)","v":{"$error":"#REF!"}},{"$f":"IF(N216>=#REF!,\"\",IF(N216<=#REF!,#REF!,#REF!))","v":{"$error":"#REF!"}},{"$f":"IF(N216>#REF!,\"\",#REF!)","v":{"$error":"#REF!"}},null,null,null,null,209,{"$f":"IF(V216>#REF!,\"\",$T$7)","v":{"$error":"#REF!"}},{"$f":"IF(V216>=#REF!,\"\",IF(V216<=#REF!,#REF!,#REF!))","v":{"$error":"#REF!"}},{"$f":"IF(V216>#REF!,\"\",#REF!)","v":{"$error":"#REF!"}},null,null,null,null,null,null,null,209]
[210,{"$f":"IF(A217>=#REF!,\"\",IF(A217<=#REF!,#REF!,#REF!))","v":{"$error":"#REF!"}},{"$f":"IF(A217>=#REF!,\"\",IF(A217<=#REF!,#REF!,#REF!))","v":{"$error":"#REF!"}},{"$f":"IF(A217>#REF!,\"\",#REF!)","v":{"$error":"#REF!"}},null,210,{"$f":"IF(F217>=#REF!,\"\",IF(F217<=#REF!,#REF!,#REF!))","v":{"$error":"#REF!"}},{"$f":"IF(F217>=#REF!,\"\",IF(F217<=#REF!,#REF!,#REF!))","v":{"$error":"#REF!"}},{"$f":"IF(F217>#REF!,\"\",PMT(#REF!/12,#REF!,-#REF!))","v":{"$error":"#REF!"}},null,null,null,null,210,{"$f":"IF(N217>#REF!,\"\",$L$7)","v":{"$error":"#REF!"}},{"$f":"IF(N217>=#REF!,\"\",IF(N217<=#REF!,#REF!,#REF!))","v":{"$error":"#REF!"}},{"$f":"IF(N217>#REF!,\"\",#REF!)","v":{"$error":"#REF!"}},null,null,null,null,210,{"$f":"IF(V217>#REF!,\"\",$T$7)","v":{"$error":"#REF!"}},{"$f":"IF(V217>=#REF!,\"\",IF(V217<=#REF!,#REF!,#REF!))","v":{"$error":"#REF!"}},{"$f":"IF(V217>#REF!,\"\",#REF!)","v":{"$error":"#REF!"}},null,null,null,null,null,null,null,210]
[211,{"$f":"IF(A218>=#REF!,\"\",IF(A218<=#REF!,#REF!,#REF!))","v":{"$error":"#REF!"}},{"$f":"IF(A218>=#REF!,\"\",IF(A218<=#REF!,#REF!,#REF!))","v":{"$error":"#REF!"}},{"$f":"IF(A218>#REF!,\"\",#REF!)","v":{"$error":"#REF!"}},null,211,{"$f":"IF(F218>=#REF!,\"\",IF(F218<=#REF!,#REF!,#REF!))","v":{"$error":"#REF!"}},{"$f":"IF(F218>=#REF!,\"\",IF(F218<=#REF!,#REF!,#REF!))","v":{"$error":"#REF!"}},{"$f":"IF(F218>#REF!,\"\",PMT(#REF!/12,#REF!,-#REF!))","v":{"$error":"#REF!"}},null,null,null,null,211,{"$f":"IF(N218>#REF!,\"\",$L$7)","v":{"$error":"#REF!"}},{"$f":"IF(N218>=#REF!,\"\",IF(N218<=#REF!,#REF!,#REF!))","v":{"$error":"#REF!"}},{"$f":"IF(N218>#REF!,\"\",#REF!)","v":{"$error":"#REF!"}},null,null,null,null,211,{"$f":"IF(V218>#REF!,\"\",$T$7)","v":{"$error":"#REF!"}},{"$f":"IF(V218>=#REF!,\"\",IF(V218<=#REF!,#REF!,#REF!))","v":{"$error":"#REF!"}},{"$f":"IF(V218>#REF!,\"\",#REF!)","v":{"$error":"#REF!"}},null,null,null,null,null,null,null,211]
[212,{"$f":"IF(A219>=#REF!,\"\",IF(A219<=#REF!,#REF!,#REF!))","v":{"$error":"#REF!"}},{"$f":"IF(A219>=#REF!,\"\",IF(A219<=#REF!,#REF!,#REF!))","v":{"$error":"#REF!"}},{"$f":"IF(A219>#REF!,\"\",#REF!)","v":{"$error":"#REF!"}},null,212,{"$f":"IF(F219>=#REF!,\"\",IF(F219<=#REF!,#REF!,#REF!))","v":{"$error":"#REF!"}},{"$f":"IF(F219>=#REF!,\"\",IF(F219<=#REF!,#REF!,#REF!))","v":{"$error":"#REF!"}},{"$f":"IF(F219>#REF!,\"\",PMT(#REF!/12,#REF!,-#REF!))","v":{"$error":"#REF!"}},null,null,null,null,212,{"$f":"IF(N219>#REF!,\"\",$L$7)","v":{"$error":"#REF!"}},{"$f":"IF(N219>=#REF!,\"\",IF(N219<=#REF!,#REF!,#REF!))","v":{"$error":"#REF!"}},{"$f":"IF(N219>#REF!,\"\",#REF!)","v":{"$error":"#REF!"}},null,null,null,null,212,{"$f":"IF(V219>#REF!,\"\",$T$7)","v":{"$error":"#REF!"}},{"$f":"IF(V219>=#REF!,\"\",IF(V219<=#REF!,#REF!,#REF!))","v":{"$error":"#REF!"}},{"$f":"IF(V219>#REF!,\"\",#REF!)","v":{"$error":"#REF!"}},null,null,null,null,null,null,null,212]
[213,{"$f":"IF(A220>=#REF!,\"\",IF(A220<=#REF!,#REF!,#REF!))","v":{"$error":"#REF!"}},{"$f":"IF(A220>=#REF!,\"\",IF(A220<=#REF!,#REF!,#REF!))","v":{"$error":"#REF!"}},{"$f":"IF(A220>#REF!,\"\",#REF!)","v":{"$error":"#REF!"}},null,213,{"$f":"IF(F220>=#REF!,\"\",IF(F220<=#REF!,#REF!,#REF!))","v":{"$error":"#REF!"}},{"$f":"IF(F220>=#REF!,\"\",IF(F220<=#REF!,#REF!,#REF!))","v":{"$error":"#REF!"}},{"$f":"IF(F220>#REF!,\"\",PMT(#REF!/12,#REF!,-#REF!))","v":{"$error":"#REF!"}},null,null,null,null,213,{"$f":"IF(N220>#REF!,\"\",$L$7)","v":{"$error":"#REF!"}},{"$f":"IF(N220>=#REF!,\"\",IF(N220<=#REF!,#REF!,#REF!))","v":{"$error":"#REF!"}},{"$f":"IF(N220>#REF!,\"\",#REF!)","v":{"$error":"#REF!"}},null,null,null,null,213,{"$f":"IF(V220>#REF!,\"\",$T$7)","v":{"$error":"#REF!"}},{"$f":"IF(V220>=#REF!,\"\",IF(V220<=#REF!,#REF!,#REF!))","v":{"$error":"#REF!"}},{"$f":"IF(V220>#REF!,\"\",#REF!)","v":{"$error":"#REF!"}},null,null,null,null,null,null,null,213]
[214,{"$f":"IF(A221>=#REF!,\"\",IF(A221<=#REF!,#REF!,#REF!))","v":{"$error":"#REF!"}},{"$f":"IF(A221>=#REF!,\"\",IF(A221<=#REF!,#REF!,#REF!))","v":{"$error":"#REF!"}},{"$f":"IF(A221>#REF!,\"\",#REF!)","v":{"$error":"#REF!"}},null,214,{"$f":"IF(F221>=#REF!,\"\",IF(F221<=#REF!,#REF!,#REF!))","v":{"$error":"#REF!"}},{"$f":"IF(F221>=#REF!,\"\",IF(F221<=#REF!,#REF!,#REF!))","v":{"$error":"#REF!"}},{"$f":"IF(F221>#REF!,\"\",PMT(#REF!/12,#REF!,-#REF!))","v":{"$error":"#REF!"}},null,null,null,null,214,{"$f":"IF(N221>#REF!,\"\",$L$7)","v":{"$error":"#REF!"}},{"$f":"IF(N221>=#REF!,\"\",IF(N221<=#REF!,#REF!,#REF!))","v":{"$error":"#REF!"}},{"$f":"IF(N221>#REF!,\"\",#REF!)","v":{"$error":"#REF!"}},null,null,null,null,214,{"$f":"IF(V221>#REF!,\"\",$T$7)","v":{"$error":"#REF!"}},{"$f":"IF(V221>=#REF!,\"\",IF(V221<=#REF!,#REF!,#REF!))","v":{"$error":"#REF!"}},{"$f":"IF(V221>#REF!,\"\",#REF!)","v":{"$error":"#REF!"}},null,null,null,null,null,null,null,214]
[215,{"$f":"IF(A222>=#REF!,\"\",IF(A222<=#REF!,#REF!,#REF!))","v":{"$error":"#REF!"}},{"$f":"IF(A222>=#REF!,\"\",IF(A222<=#REF!,#REF!,#REF!))","v":{"$error":"#REF!"}},{"$f":"IF(A222>#REF!,\"\",#REF!)","v":{"$error":"#REF!"}},null,215,{"$f":"IF(F222>=#REF!,\"\",IF(F222<=#REF!,#REF!,#REF!))","v":{"$error":"#REF!"}},{"$f":"IF(F222>=#REF!,\"\",IF(F222<=#REF!,#REF!,#REF!))","v":{"$error":"#REF!"}},{"$f":"IF(F222>#REF!,\"\",PMT(#REF!/12,#REF!,-#REF!))","v":{"$error":"#REF!"}},null,null,null,null,215,{"$f":"IF(N222>#REF!,\"\",$L$7)","v":{"$error":"#REF!"}},{"$f":"IF(N222>=#REF!,\"\",IF(N222<=#REF!,#REF!,#REF!))","v":{"$error":"#REF!"}},{"$f":"IF(N222>#REF!,\"\",#REF!)","v":{"$error":"#REF!"}},null,null,null,null,215,{"$f":"IF(V222>#REF!,\"\",$T$7)","v":{"$error":"#REF!"}},{"$f":"IF(V222>=#REF!,\"\",IF(V222<=#REF!,#REF!,#REF!))","v":{"$error":"#REF!"}},{"$f":"IF(V222>#REF!,\"\",#REF!)","v":{"$error":"#REF!"}},null,null,null,null,null,null,null,215]
[216,{"$f":"IF(A223>=#REF!,\"\",IF(A223<=#REF!,#REF!,#REF!))","v":{"$error":"#REF!"}},{"$f":"IF(A223>=#REF!,\"\",IF(A223<=#REF!,#REF!,#REF!))","v":{"$error":"#REF!"}},{"$f":"IF(A223>#REF!,\"\",#REF!)","v":{"$error":"#REF!"}},null,216,{"$f":"IF(F223>=#REF!,\"\",IF(F223<=#REF!,#REF!,#REF!))","v":{"$error":"#REF!"}},{"$f":"IF(F223>=#REF!,\"\",IF(F223<=#REF!,#REF!,#REF!))","v":{"$error":"#REF!"}},{"$f":"IF(F223>#REF!,\"\",PMT(#REF!/12,#REF!,-#REF!))","v":{"$error":"#REF!"}},null,null,null,null,216,{"$f":"IF(N223>#REF!,\"\",$L$7)","v":{"$error":"#REF!"}},{"$f":"IF(N223>=#REF!,\"\",IF(N223<=#REF!,#REF!,#REF!))","v":{"$error":"#REF!"}},{"$f":"IF(N223>#REF!,\"\",#REF!)","v":{"$error":"#REF!"}},null,null,null,null,216,{"$f":"IF(V223>#REF!,\"\",$T$7)","v":{"$error":"#REF!"}},{"$f":"IF(V223>=#REF!,\"\",IF(V223<=#REF!,#REF!,#REF!))","v":{"$error":"#REF!"}},{"$f":"IF(V223>#REF!,\"\",#REF!)","v":{"$error":"#REF!"}},null,null,null,null,null,null,null,216]
[217,{"$f":"IF(A224>=#REF!,\"\",IF(A224<=#REF!,#REF!,#REF!))","v":{"$error":"#REF!"}},{"$f":"IF(A224>=#REF!,\"\",IF(A224<=#REF!,#REF!,#REF!))","v":{"$error":"#REF!"}},{"$f":"IF(A224>#REF!,\"\",#REF!)","v":{"$error":"#REF!"}},null,217,{"$f":"IF(F224>=#REF!,\"\",IF(F224<=#REF!,#REF!,#REF!))","v":{"$error":"#REF!"}},{"$f":"IF(F224>=#REF!,\"\",IF(F224<=#REF!,#REF!,#REF!))","v":{"$error":"#REF!"}},{"$f":"IF(F224>#REF!,\"\",PMT(#REF!/12,#REF!,-#REF!))","v":{"$error":"#REF!"}},null,null,null,null,217,{"$f":"IF(N224>#REF!,\"\",$L$7)","v":{"$error":"#REF!"}},{"$f":"IF(N224>=#REF!,\"\",IF(N224<=#REF!,#REF!,#REF!))","v":{"$error":"#REF!"}},{"$f":"IF(N224>#REF!,\"\",#REF!)","v":{"$error":"#REF!"}},null,null,null,null,217,{"$f":"IF(V224>#REF!,\"\",$T$7)","v":{"$error":"#REF!"}},{"$f":"IF(V224>=#REF!,\"\",IF(V224<=#REF!,#REF!,#REF!))","v":{"$error":"#REF!"}},{"$f":"IF(V224>#REF!,\"\",#REF!)","v":{"$error":"#REF!"}},null,null,null,null,null,null,null,217]
[218,{"$f":"IF(A225>=#REF!,\"\",IF(A225<=#REF!,#REF!,#REF!))","v":{"$error":"#REF!"}},{"$f":"IF(A225>=#REF!,\"\",IF(A225<=#REF!,#REF!,#REF!))","v":{"$error":"#REF!"}},{"$f":"IF(A225>#REF!,\"\",#REF!)","v":{"$error":"#REF!"}},null,218,{"$f":"IF(F225>=#REF!,\"\",IF(F225<=#REF!,#REF!,#REF!))","v":{"$error":"#REF!"}},{"$f":"IF(F225>=#REF!,\"\",IF(F225<=#REF!,#REF!,#REF!))","v":{"$error":"#REF!"}},{"$f":"IF(F225>#REF!,\"\",PMT(#REF!/12,#REF!,-#REF!))","v":{"$error":"#REF!"}},null,null,null,null,218,{"$f":"IF(N225>#REF!,\"\",$L$7)","v":{"$error":"#REF!"}},{"$f":"IF(N225>=#REF!,\"\",IF(N225<=#REF!,#REF!,#REF!))","v":{"$error":"#REF!"}},{"$f":"IF(N225>#REF!,\"\",#REF!)","v":{"$error":"#REF!"}},null,null,null,null,218,{"$f":"IF(V225>#REF!,\"\",$T$7)","v":{"$error":"#REF!"}},{"$f":"IF(V225>=#REF!,\"\",IF(V225<=#REF!,#REF!,#REF!))","v":{"$error":"#REF!"}},{"$f":"IF(V225>#REF!,\"\",#REF!)","v":{"$error":"#REF!"}},null,null,null,null,null,null,null,218]
[219,{"$f":"IF(A226>=#REF!,\"\",IF(A226<=#REF!,#REF!,#REF!))","v":{"$error":"#REF!"}},{"$f":"IF(A226>=#REF!,\"\",IF(A226<=#REF!,#REF!,#REF!))","v":{"$error":"#REF!"}},{"$f":"IF(A226>#REF!,\"\",#REF!)","v":{"$error":"#REF!"}},null,219,{"$f":"IF(F226>=#REF!,\"\",IF(F226<=#REF!,#REF!,#REF!))","v":{"$error":"#REF!"}},{"$f":"IF(F226>=#REF!,\"\",IF(F226<=#REF!,#REF!,#REF!))","v":{"$error":"#REF!"}},{"$f":"IF(F226>#REF!,\"\",PMT(#REF!/12,#REF!,-#REF!))","v":{"$error":"#REF!"}},null,null,null,null,219,{"$f":"IF(N226>#REF!,\"\",$L$7)","v":{"$error":"#REF!"}},{"$f":"IF(N226>=#REF!,\"\",IF(N226<=#REF!,#REF!,#REF!))","v":{"$error":"#REF!"}},{"$f":"IF(N226>#REF!,\"\",#REF!)","v":{"$error":"#REF!"}},null,null,null,null,219,{"$f":"IF(V226>#REF!,\"\",$T$7)","v":{"$error":"#REF!"}},{"$f":"IF(V226>=#REF!,\"\",IF(V226<=#REF!,#REF!,#REF!))","v":{"$error":"#REF!"}},{"$f":"IF(V226>#REF!,\"\",#REF!)","v":{"$error":"#REF!"}},null,null,null,null,null,null,null,219]
[220,{"$f":"IF(A227>=#REF!,\"\",IF(A227<=#REF!,#REF!,#REF!))","v":{"$error":"#REF!"}},{"$f":"IF(A227>=#REF!,\"\",IF(A227<=#REF!,#REF!,#REF!))","v":{"$error":"#REF!"}},{"$f":"IF(A227>#REF!,\"\",#REF!)","v":{"$error":"#REF!"}},null,220,{"$f":"IF(F227>=#REF!,\"\",IF(F227<=#REF!,#REF!,#REF!))","v":{"$error":"#REF!"}},{"$f":"IF(F227>=#REF!,\"\",IF(F227<=#REF!,#REF!,#REF!))","v":{"$error":"#REF!"}},{"$f":"IF(F227>#REF!,\"\",PMT(#REF!/12,#REF!,-#REF!))","v":{"$error":"#REF!"}},null,null,null,null,220,{"$f":"IF(N227>#REF!,\"\",$L$7)","v":{"$error":"#REF!"}},{"$f":"IF(N227>=#REF!,\"\",IF(N227<=#REF!,#REF!,#REF!))","v":{"$error":"#REF!"}},{"$f":"IF(N227>#REF!,\"\",#REF!)","v":{"$error":"#REF!"}},null,null,null,null,220,{"$f":"IF(V227>#REF!,\"\",$T$7)","v":{"$error":"#REF!"}},{"$f":"IF(V227>=#REF!,\"\",IF(V227<=#REF!,#REF!,#REF!))","v":{"$error":"#REF!"}},{"$f":"IF(V227>#REF!,\"\",#REF!)","v":{"$error":"#REF!"}},null,null,null,null,null,null,null,220]
[221,{"$f":"IF(A228>=#REF!,\"\",IF(A228<=#REF!,#REF!,#REF!))","v":{"$error":"#REF!"}},{"$f":"IF(A228>=#REF!,\"\",IF(A228<=#REF!,#REF!,#REF!))","v":{"$error":"#REF!"}},{"$f":"IF(A228>#REF!,\"\",#REF!)","v":{"$error":"#REF!"}},null,221,{"$f":"IF(F228>=#REF!,\"\",IF(F228<=#REF!,#REF!,#REF!))","v":{"$error":"#REF!"}},{"$f":"IF(F228>=#REF!,\"\",IF(F228<=#REF!,#REF!,#REF!))","v":{"$error":"#REF!"}},{"$f":"IF(F228>#REF!,\"\",PMT(#REF!/12,#REF!,-#REF!))","v":{"$error":"#REF!"}},null,null,null,null,221,{"$f":"IF(N228>#REF!,\"\",$L$7)","v":{"$error":"#REF!"}},{"$f":"IF(N228>=#REF!,\"\",IF(N228<=#REF!,#REF!,#REF!))","v":{"$error":"#REF!"}},{"$f":"IF(N228>#REF!,\"\",#REF!)","v":{"$error":"#REF!"}},null,null,null,null,221,{"$f":"IF(V228>#REF!,\"\",$T$7)","v":{"$error":"#REF!"}},{"$f":"IF(V228>=#REF!,\"\",IF(V228<=#REF!,#REF!,#REF!))","v":{"$error":"#REF!"}},{"$f":"IF(V228>#REF!,\"\",#REF!)","v":{"$error":"#REF!"}},null,null,null,null,null,null,null,221]
[222,{"$f":"IF(A229>=#REF!,\"\",IF(A229<=#REF!,#REF!,#REF!))","v":{"$error":"#REF!"}},{"$f":"IF(A229>=#REF!,\"\",IF(A229<=#REF!,#REF!,#REF!))","v":{"$error":"#REF!"}},{"$f":"IF(A229>#REF!,\"\",#REF!)","v":{"$error":"#REF!"}},null,222,{"$f":"IF(F229>=#REF!,\"\",IF(F229<=#REF!,#REF!,#REF!))","v":{"$error":"#REF!"}},{"$f":"IF(F229>=#REF!,\"\",IF(F229<=#REF!,#REF!,#REF!))","v":{"$error":"#REF!"}},{"$f":"IF(F229>#REF!,\"\",PMT(#REF!/12,#REF!,-#REF!))","v":{"$error":"#REF!"}},null,null,null,null,222,{"$f":"IF(N229>#REF!,\"\",$L$7)","v":{"$error":"#REF!"}},{"$f":"IF(N229>=#REF!,\"\",IF(N229<=#REF!,#REF!,#REF!))","v":{"$error":"#REF!"}},{"$f":"IF(N229>#REF!,\"\",#REF!)","v":{"$error":"#REF!"}},null,null,null,null,222,{"$f":"IF(V229>#REF!,\"\",$T$7)","v":{"$error":"#REF!"}},{"$f":"IF(V229>=#REF!,\"\",IF(V229<=#REF!,#REF!,#REF!))","v":{"$error":"#REF!"}},{"$f":"IF(V229>#REF!,\"\",#REF!)","v":{"$error":"#REF!"}},null,null,null,null,null,null,null,222]
[223,{"$f":"IF(A230>=#REF!,\"\",IF(A230<=#REF!,#REF!,#REF!))","v":{"$error":"#REF!"}},{"$f":"IF(A230>=#REF!,\"\",IF(A230<=#REF!,#REF!,#REF!))","v":{"$error":"#REF!"}},{"$f":"IF(A230>#REF!,\"\",#REF!)","v":{"$error":"#REF!"}},null,223,{"$f":"IF(F230>=#REF!,\"\",IF(F230<=#REF!,#REF!,#REF!))","v":{"$error":"#REF!"}},{"$f":"IF(F230>=#REF!,\"\",IF(F230<=#REF!,#REF!,#REF!))","v":{"$error":"#REF!"}},{"$f":"IF(F230>#REF!,\"\",PMT(#REF!/12,#REF!,-#REF!))","v":{"$error":"#REF!"}},null,null,null,null,223,{"$f":"IF(N230>#REF!,\"\",$L$7)","v":{"$error":"#REF!"}},{"$f":"IF(N230>=#REF!,\"\",IF(N230<=#REF!,#REF!,#REF!))","v":{"$error":"#REF!"}},{"$f":"IF(N230>#REF!,\"\",#REF!)","v":{"$error":"#REF!"}},null,null,null,null,223,{"$f":"IF(V230>#REF!,\"\",$T$7)","v":{"$error":"#REF!"}},{"$f":"IF(V230>=#REF!,\"\",IF(V230<=#REF!,#REF!,#REF!))","v":{"$error":"#REF!"}},{"$f":"IF(V230>#REF!,\"\",#REF!)","v":{"$error":"#REF!"}},null,null,null,null,null,null,null,223]
[224,{"$f":"IF(A231>=#REF!,\"\",IF(A231<=#REF!,#REF!,#REF!))","v":{"$error":"#REF!"}},{"$f":"IF(A231>=#REF!,\"\",IF(A231<=#REF!,#REF!,#REF!))","v":{"$error":"#REF!"}},{"$f":"IF(A231>#REF!,\"\",#REF!)","v":{"$error":"#REF!"}},null,224,{"$f":"IF(F231>=#REF!,\"\",IF(F231<=#REF!,#REF!,#REF!))","v":{"$error":"#REF!"}},{"$f":"IF(F231>=#REF!,\"\",IF(F231<=#REF!,#REF!,#REF!))","v":{"$error":"#REF!"}},{"$f":"IF(F231>#REF!,\"\",PMT(#REF!/12,#REF!,-#REF!))","v":{"$error":"#REF!"}},null,null,null,null,224,{"$f":"IF(N231>#REF!,\"\",$L$7)","v":{"$error":"#REF!"}},{"$f":"IF(N231>=#REF!,\"\",IF(N231<=#REF!,#REF!,#REF!))","v":{"$error":"#REF!"}},{"$f":"IF(N231>#REF!,\"\",#REF!)","v":{"$error":"#REF!"}},null,null,null,null,224,{"$f":"IF(V231>#REF!,\"\",$T$7)","v":{"$error":"#REF!"}},{"$f":"IF(V231>=#REF!,\"\",IF(V231<=#REF!,#REF!,#REF!))","v":{"$error":"#REF!"}},{"$f":"IF(V231>#REF!,\"\",#REF!)","v":{"$error":"#REF!"}},null,null,null,null,null,null,null,224]
[225,{"$f":"IF(A232>=#REF!,\"\",IF(A232<=#REF!,#REF!,#REF!))","v":{"$error":"#REF!"}},{"$f":"IF(A232>=#REF!,\"\",IF(A232<=#REF!,#REF!,#REF!))","v":{"$error":"#REF!"}},{"$f":"IF(A232>#REF!,\"\",#REF!)","v":{"$error":"#REF!"}},null,225,{"$f":"IF(F232>=#REF!,\"\",IF(F232<=#REF!,#REF!,#REF!))","v":{"$error":"#REF!"}},{"$f":"IF(F232>=#REF!,\"\",IF(F232<=#REF!,#REF!,#REF!))","v":{"$error":"#REF!"}},{"$f":"IF(F232>#REF!,\"\",PMT(#REF!/12,#REF!,-#REF!))","v":{"$error":"#REF!"}},null,null,null,null,225,{"$f":"IF(N232>#REF!,\"\",$L$7)","v":{"$error":"#REF!"}},{"$f":"IF(N232>=#REF!,\"\",IF(N232<=#REF!,#REF!,#REF!))","v":{"$error":"#REF!"}},{"$f":"IF(N232>#REF!,\"\",#REF!)","v":{"$error":"#REF!"}},null,null,null,null,225,{"$f":"IF(V232>#REF!,\"\",$T$7)","v":{"$error":"#REF!"}},{"$f":"IF(V232>=#REF!,\"\",IF(V232<=#REF!,#REF!,#REF!))","v":{"$error":"#REF!"}},{"$f":"IF(V232>#REF!,\"\",#REF!)","v":{"$error":"#REF!"}},null,null,null,null,null,null,null,225]
[226,{"$f":"IF(A233>=#REF!,\"\",IF(A233<=#REF!,#REF!,#REF!))","v":{"$error":"#REF!"}},{"$f":"IF(A233>=#REF!,\"\",IF(A233<=#REF!,#REF!,#REF!))","v":{"$error":"#REF!"}},{"$f":"IF(A233>#REF!,\"\",#REF!)","v":{"$error":"#REF!"}},null,226,{"$f":"IF(F233>=#REF!,\"\",IF(F233<=#REF!,#REF!,#REF!))","v":{"$error":"#REF!"}},{"$f":"IF(F233>=#REF!,\"\",IF(F233<=#REF!,#REF!,#REF!))","v":{"$error":"#REF!"}},{"$f":"IF(F233>#REF!,\"\",PMT(#REF!/12,#REF!,-#REF!))","v":{"$error":"#REF!"}},null,null,null,null,226,{"$f":"IF(N233>#REF!,\"\",$L$7)","v":{"$error":"#REF!"}},{"$f":"IF(N233>=#REF!,\"\",IF(N233<=#REF!,#REF!,#REF!))","v":{"$error":"#REF!"}},{"$f":"IF(N233>#REF!,\"\",#REF!)","v":{"$error":"#REF!"}},null,null,null,null,226,{"$f":"IF(V233>#REF!,\"\",$T$7)","v":{"$error":"#REF!"}},{"$f":"IF(V233>=#REF!,\"\",IF(V233<=#REF!,#REF!,#REF!))","v":{"$error":"#REF!"}},{"$f":"IF(V233>#REF!,\"\",#REF!)","v":{"$error":"#REF!"}},null,null,null,null,null,null,null,226]
[227,{"$f":"IF(A234>=#REF!,\"\",IF(A234<=#REF!,#REF!,#REF!))","v":{"$error":"#REF!"}},{"$f":"IF(A234>=#REF!,\"\",IF(A234<=#REF!,#REF!,#REF!))","v":{"$error":"#REF!"}},{"$f":"IF(A234>#REF!,\"\",#REF!)","v":{"$error":"#REF!"}},null,227,{"$f":"IF(F234>=#REF!,\"\",IF(F234<=#REF!,#REF!,#REF!))","v":{"$error":"#REF!"}},{"$f":"IF(F234>=#REF!,\"\",IF(F234<=#REF!,#REF!,#REF!))","v":{"$error":"#REF!"}},{"$f":"IF(F234>#REF!,\"\",PMT(#REF!/12,#REF!,-#REF!))","v":{"$error":"#REF!"}},null,null,null,null,227,{"$f":"IF(N234>#REF!,\"\",$L$7)","v":{"$error":"#REF!"}},{"$f":"IF(N234>=#REF!,\"\",IF(N234<=#REF!,#REF!,#REF!))","v":{"$error":"#REF!"}},{"$f":"IF(N234>#REF!,\"\",#REF!)","v":{"$error":"#REF!"}},null,null,null,null,227,{"$f":"IF(V234>#REF!,\"\",$T$7)","v":{"$error":"#REF!"}},{"$f":"IF(V234>=#REF!,\"\",IF(V234<=#REF!,#REF!,#REF!))","v":{"$error":"#REF!"}},{"$f":"IF(V234>#REF!,\"\",#REF!)","v":{"$error":"#REF!"}},null,null,null,null,null,null,null,227]
[228,{"$f":"IF(A235>=#REF!,\"\",IF(A235<=#REF!,#REF!,#REF!))","v":{"$error":"#REF!"}},{"$f":"IF(A235>=#REF!,\"\",IF(A235<=#REF!,#REF!,#REF!))","v":{"$error":"#REF!"}},{"$f":"IF(A235>#REF!,\"\",#REF!)","v":{"$error":"#REF!"}},null,228,{"$f":"IF(F235>=#REF!,\"\",IF(F235<=#REF!,#REF!,#REF!))","v":{"$error":"#REF!"}},{"$f":"IF(F235>=#REF!,\"\",IF(F235<=#REF!,#REF!,#REF!))","v":{"$error":"#REF!"}},{"$f":"IF(F235>#REF!,\"\",PMT(#REF!/12,#REF!,-#REF!))","v":{"$error":"#REF!"}},null,null,null,null,228,{"$f":"IF(N235>#REF!,\"\",$L$7)","v":{"$error":"#REF!"}},{"$f":"IF(N235>=#REF!,\"\",IF(N235<=#REF!,#REF!,#REF!))","v":{"$error":"#REF!"}},{"$f":"IF(N235>#REF!,\"\",#REF!)","v":{"$error":"#REF!"}},null,null,null,null,228,{"$f":"IF(V235>#REF!,\"\",$T$7)","v":{"$error":"#REF!"}},{"$f":"IF(V235>=#REF!,\"\",IF(V235<=#REF!,#REF!,#REF!))","v":{"$error":"#REF!"}},{"$f":"IF(V235>#REF!,\"\",#REF!)","v":{"$error":"#REF!"}},null,null,null,null,null,null,null,228]
[229,{"$f":"IF(A236>=#REF!,\"\",IF(A236<=#REF!,#REF!,#REF!))","v":{"$error":"#REF!"}},{"$f":"IF(A236>=#REF!,\"\",IF(A236<=#REF!,#REF!,#REF!))","v":{"$error":"#REF!"}},{"$f":"IF(A236>#REF!,\"\",#REF!)","v":{"$error":"#REF!"}},null,229,{"$f":"IF(F236>=#REF!,\"\",IF(F236<=#REF!,#REF!,#REF!))","v":{"$error":"#REF!"}},{"$f":"IF(F236>=#REF!,\"\",IF(F236<=#REF!,#REF!,#REF!))","v":{"$error":"#REF!"}},{"$f":"IF(F236>#REF!,\"\",PMT(#REF!/12,#REF!,-#REF!))","v":{"$error":"#REF!"}},null,null,null,null,229,{"$f":"IF(N236>#REF!,\"\",$L$7)","v":{"$error":"#REF!"}},{"$f":"IF(N236>=#REF!,\"\",IF(N236<=#REF!,#REF!,#REF!))","v":{"$error":"#REF!"}},{"$f":"IF(N236>#REF!,\"\",#REF!)","v":{"$error":"#REF!"}},null,null,null,null,229,{"$f":"IF(V236>#REF!,\"\",$T$7)","v":{"$error":"#REF!"}},{"$f":"IF(V236>=#REF!,\"\",IF(V236<=#REF!,#REF!,#REF!))","v":{"$error":"#REF!"}},{"$f":"IF(V236>#REF!,\"\",#REF!)","v":{"$error":"#REF!"}},null,null,null,null,null,null,null,229]
[230,{"$f":"IF(A237>=#REF!,\"\",IF(A237<=#REF!,#REF!,#REF!))","v":{"$error":"#REF!"}},{"$f":"IF(A237>=#REF!,\"\",IF(A237<=#REF!,#REF!,#REF!))","v":{"$error":"#REF!"}},{"$f":"IF(A237>#REF!,\"\",#REF!)","v":{"$error":"#REF!"}},null,230,{"$f":"IF(F237>=#REF!,\"\",IF(F237<=#REF!,#REF!,#REF!))","v":{"$error":"#REF!"}},{"$f":"IF(F237>=#REF!,\"\",IF(F237<=#REF!,#REF!,#REF!))","v":{"$error":"#REF!"}},{"$f":"IF(F237>#REF!,\"\",PMT(#REF!/12,#REF!,-#REF!))","v":{"$error":"#REF!"}},null,null,null,null,230,{"$f":"IF(N237>#REF!,\"\",$L$7)","v":{"$error":"#REF!"}},{"$f":"IF(N237>=#REF!,\"\",IF(N237<=#REF!,#REF!,#REF!))","v":{"$error":"#REF!"}},{"$f":"IF(N237>#REF!,\"\",#REF!)","v":{"$error":"#REF!"}},null,null,null,null,230,{"$f":"IF(V237>#REF!,\"\",$T$7)","v":{"$error":"#REF!"}},{"$f":"IF(V237>=#REF!,\"\",IF(V237<=#REF!,#REF!,#REF!))","v":{"$error":"#REF!"}},{"$f":"IF(V237>#REF!,\"\",#REF!)","v":{"$error":"#REF!"}},null,null,null,null,null,null,null,230]
[231,{"$f":"IF(A238>=#REF!,\"\",IF(A238<=#REF!,#REF!,#REF!))","v":{"$error":"#REF!"}},{"$f":"IF(A238>=#REF!,\"\",IF(A238<=#REF!,#REF!,#REF!))","v":{"$error":"#REF!"}},{"$f":"IF(A238>#REF!,\"\",#REF!)","v":{"$error":"#REF!"}},null,231,{"$f":"IF(F238>=#REF!,\"\",IF(F238<=#REF!,#REF!,#REF!))","v":{"$error":"#REF!"}},{"$f":"IF(F238>=#REF!,\"\",IF(F238<=#REF!,#REF!,#REF!))","v":{"$error":"#REF!"}},{"$f":"IF(F238>#REF!,\"\",PMT(#REF!/12,#REF!,-#REF!))","v":{"$error":"#REF!"}},null,null,null,null,231,{"$f":"IF(N238>#REF!,\"\",$L$7)","v":{"$error":"#REF!"}},{"$f":"IF(N238>=#REF!,\"\",IF(N238<=#REF!,#REF!,#REF!))","v":{"$error":"#REF!"}},{"$f":"IF(N238>#REF!,\"\",#REF!)","v":{"$error":"#REF!"}},null,null,null,null,231,{"$f":"IF(V238>#REF!,\"\",$T$7)","v":{"$error":"#REF!"}},{"$f":"IF(V238>=#REF!,\"\",IF(V238<=#REF!,#REF!,#REF!))","v":{"$error":"#REF!"}},{"$f":"IF(V238>#REF!,\"\",#REF!)","v":{"$error":"#REF!"}},null,null,null,null,null,null,null,231]
[232,{"$f":"IF(A239>=#REF!,\"\",IF(A239<=#REF!,#REF!,#REF!))","v":{"$error":"#REF!"}},{"$f":"IF(A239>=#REF!,\"\",IF(A239<=#REF!,#REF!,#REF!))","v":{"$error":"#REF!"}},{"$f":"IF(A239>#REF!,\"\",#REF!)","v":{"$error":"#REF!"}},null,232,{"$f":"IF(F239>=#REF!,\"\",IF(F239<=#REF!,#REF!,#REF!))","v":{"$error":"#REF!"}},{"$f":"IF(F239>=#REF!,\"\",IF(F239<=#REF!,#REF!,#REF!))","v":{"$error":"#REF!"}},{"$f":"IF(F239>#REF!,\"\",PMT(#REF!/12,#REF!,-#REF!))","v":{"$error":"#REF!"}},null,null,null,null,232,{"$f":"IF(N239>#REF!,\"\",$L$7)","v":{"$error":"#REF!"}},{"$f":"IF(N239>=#REF!,\"\",IF(N239<=#REF!,#REF!,#REF!))","v":{"$error":"#REF!"}},{"$f":"IF(N239>#REF!,\"\",#REF!)","v":{"$error":"#REF!"}},null,null,null,null,232,{"$f":"IF(V239>#REF!,\"\",$T$7)","v":{"$error":"#REF!"}},{"$f":"IF(V239>=#REF!,\"\",IF(V239<=#REF!,#REF!,#REF!))","v":{"$error":"#REF!"}},{"$f":"IF(V239>#REF!,\"\",#REF!)","v":{"$error":"#REF!"}},null,null,null,null,null,null,null,232]
[233,{"$f":"IF(A240>=#REF!,\"\",IF(A240<=#REF!,#REF!,#REF!))","v":{"$error":"#REF!"}},{"$f":"IF(A240>=#REF!,\"\",IF(A240<=#REF!,#REF!,#REF!))","v":{"$error":"#REF!"}},{"$f":"IF(A240>#REF!,\"\",#REF!)","v":{"$error":"#REF!"}},null,233,{"$f":"IF(F240>=#REF!,\"\",IF(F240<=#REF!,#REF!,#REF!))","v":{"$error":"#REF!"}},{"$f":"IF(F240>=#REF!,\"\",IF(F240<=#REF!,#REF!,#REF!))","v":{"$error":"#REF!"}},{"$f":"IF(F240>#REF!,\"\",PMT(#REF!/12,#REF!,-#REF!))","v":{"$error":"#REF!"}},null,null,null,null,233,{"$f":"IF(N240>#REF!,\"\",$L$7)","v":{"$error":"#REF!"}},{"$f":"IF(N240>=#REF!,\"\",IF(N240<=#REF!,#REF!,#REF!))","v":{"$error":"#REF!"}},{"$f":"IF(N240>#REF!,\"\",#REF!)","v":{"$error":"#REF!"}},null,null,null,null,233,{"$f":"IF(V240>#REF!,\"\",$T$7)","v":{"$error":"#REF!"}},{"$f":"IF(V240>=#REF!,\"\",IF(V240<=#REF!,#REF!,#REF!))","v":{"$error":"#REF!"}},{"$f":"IF(V240>#REF!,\"\",#REF!)","v":{"$error":"#REF!"}},null,null,null,null,null,null,null,233]
[234,{"$f":"IF(A241>=#REF!,\"\",IF(A241<=#REF!,#REF!,#REF!))","v":{"$error":"#REF!"}},{"$f":"IF(A241>=#REF!,\"\",IF(A241<=#REF!,#REF!,#REF!))","v":{"$error":"#REF!"}},{"$f":"IF(A241>#REF!,\"\",#REF!)","v":{"$error":"#REF!"}},null,234,{"$f":"IF(F241>=#REF!,\"\",IF(F241<=#REF!,#REF!,#REF!))","v":{"$error":"#REF!"}},{"$f":"IF(F241>=#REF!,\"\",IF(F241<=#REF!,#REF!,#REF!))","v":{"$error":"#REF!"}},{"$f":"IF(F241>#REF!,\"\",PMT(#REF!/12,#REF!,-#REF!))","v":{"$error":"#REF!"}},null,null,null,null,234,{"$f":"IF(N241>#REF!,\"\",$L$7)","v":{"$error":"#REF!"}},{"$f":"IF(N241>=#REF!,\"\",IF(N241<=#REF!,#REF!,#REF!))","v":{"$error":"#REF!"}},{"$f":"IF(N241>#REF!,\"\",#REF!)","v":{"$error":"#REF!"}},null,null,null,null,234,{"$f":"IF(V241>#REF!,\"\",$T$7)","v":{"$error":"#REF!"}},{"$f":"IF(V241>=#REF!,\"\",IF(V241<=#REF!,#REF!,#REF!))","v":{"$error":"#REF!"}},{"$f":"IF(V241>#REF!,\"\",#REF!)","v":{"$error":"#REF!"}},null,null,null,null,null,null,null,234]
[235,{"$f":"IF(A242>=#REF!,\"\",IF(A242<=#REF!,#REF!,#REF!))","v":{"$error":"#REF!"}},{"$f":"IF(A242>=#REF!,\"\",IF(A242<=#REF!,#REF!,#REF!))","v":{"$error":"#REF!"}},{"$f":"IF(A242>#REF!,\"\",#REF!)","v":{"$error":"#REF!"}},null,235,{"$f":"IF(F242>=#REF!,\"\",IF(F242<=#REF!,#REF!,#REF!))","v":{"$error":"#REF!"}},{"$f":"IF(F242>=#REF!,\"\",IF(F242<=#REF!,#REF!,#REF!))","v":{"$error":"#REF!"}},{"$f":"IF(F242>#REF!,\"\",PMT(#REF!/12,#REF!,-#REF!))","v":{"$error":"#REF!"}},null,null,null,null,235,{"$f":"IF(N242>#REF!,\"\",$L$7)","v":{"$error":"#REF!"}},{"$f":"IF(N242>=#REF!,\"\",IF(N242<=#REF!,#REF!,#REF!))","v":{"$error":"#REF!"}},{"$f":"IF(N242>#REF!,\"\",#REF!)","v":{"$error":"#REF!"}},null,null,null,null,235,{"$f":"IF(V242>#REF!,\"\",$T$7)","v":{"$error":"#REF!"}},{"$f":"IF(V242>=#REF!,\"\",IF(V242<=#REF!,#REF!,#REF!))","v":{"$error":"#REF!"}},{"$f":"IF(V242>#REF!,\"\",#REF!)","v":{"$error":"#REF!"}},null,null,null,null,null,null,null,235]
[236,{"$f":"IF(A243>=#REF!,\"\",IF(A243<=#REF!,#REF!,#REF!))","v":{"$error":"#REF!"}},{"$f":"IF(A243>=#REF!,\"\",IF(A243<=#REF!,#REF!,#REF!))","v":{"$error":"#REF!"}},{"$f":"IF(A243>#REF!,\"\",#REF!)","v":{"$error":"#REF!"}},null,236,{"$f":"IF(F243>=#REF!,\"\",IF(F243<=#REF!,#REF!,#REF!))","v":{"$error":"#REF!"}},{"$f":"IF(F243>=#REF!,\"\",IF(F243<=#REF!,#REF!,#REF!))","v":{"$error":"#REF!"}},{"$f":"IF(F243>#REF!,\"\",PMT(#REF!/12,#REF!,-#REF!))","v":{"$error":"#REF!"}},null,null,null,null,236,{"$f":"IF(N243>#REF!,\"\",$L$7)","v":{"$error":"#REF!"}},{"$f":"IF(N243>=#REF!,\"\",IF(N243<=#REF!,#REF!,#REF!))","v":{"$error":"#REF!"}},{"$f":"IF(N243>#REF!,\"\",#REF!)","v":{"$error":"#REF!"}},null,null,null,null,236,{"$f":"IF(V243>#REF!,\"\",$T$7)","v":{"$error":"#REF!"}},{"$f":"IF(V243>=#REF!,\"\",IF(V243<=#REF!,#REF!,#REF!))","v":{"$error":"#REF!"}},{"$f":"IF(V243>#REF!,\"\",#REF!)","v":{"$error":"#REF!"}},null,null,null,null,null,null,null,236]
[237,{"$f":"IF(A244>=#REF!,\"\",IF(A244<=#REF!,#REF!,#REF!))","v":{"$error":"#REF!"}},{"$f":"IF(A244>=#REF!,\"\",IF(A244<=#REF!,#REF!,#REF!))","v":{"$error":"#REF!"}},{"$f":"IF(A244>#REF!,\"\",#REF!)","v":{"$error":"#REF!"}},null,237,{"$f":"IF(F244>=#REF!,\"\",IF(F244<=#REF!,#REF!,#REF!))","v":{"$error":"#REF!"}},{"$f":"IF(F244>=#REF!,\"\",IF(F244<=#REF!,#REF!,#REF!))","v":{"$error":"#REF!"}},{"$f":"IF(F244>#REF!,\"\",PMT(#REF!/12,#REF!,-#REF!))","v":{"$error":"#REF!"}},null,null,null,null,237,{"$f":"IF(N244>#REF!,\"\",$L$7)","v":{"$error":"#REF!"}},{"$f":"IF(N244>=#REF!,\"\",IF(N244<=#REF!,#REF!,#REF!))","v":{"$error":"#REF!"}},{"$f":"IF(N244>#REF!,\"\",#REF!)","v":{"$error":"#REF!"}},null,null,null,null,237,{"$f":"IF(V244>#REF!,\"\",$T$7)","v":{"$error":"#REF!"}},{"$f":"IF(V244>=#REF!,\"\",IF(V244<=#REF!,#REF!,#REF!))","v":{"$error":"#REF!"}},{"$f":"IF(V244>#REF!,\"\",#REF!)","v":{"$error":"#REF!"}},null,null,null,null,null,null,null,237]
[238,{"$f":"IF(A245>=#REF!,\"\",IF(A245<=#REF!,#REF!,#REF!))","v":{"$error":"#REF!"}},{"$f":"IF(A245>=#REF!,\"\",IF(A245<=#REF!,#REF!,#REF!))","v":{"$error":"#REF!"}},{"$f":"IF(A245>#REF!,\"\",#REF!)","v":{"$error":"#REF!"}},null,238,{"$f":"IF(F245>=#REF!,\"\",IF(F245<=#REF!,#REF!,#REF!))","v":{"$error":"#REF!"}},{"$f":"IF(F245>=#REF!,\"\",IF(F245<=#REF!,#REF!,#REF!))","v":{"$error":"#REF!"}},{"$f":"IF(F245>#REF!,\"\",PMT(#REF!/12,#REF!,-#REF!))","v":{"$error":"#REF!"}},null,null,null,null,238,{"$f":"IF(N245>#REF!,\"\",$L$7)","v":{"$error":"#REF!"}},{"$f":"IF(N245>=#REF!,\"\",IF(N245<=#REF!,#REF!,#REF!))","v":{"$error":"#REF!"}},{"$f":"IF(N245>#REF!,\"\",#REF!)","v":{"$error":"#REF!"}},null,null,null,null,238,{"$f":"IF(V245>#REF!,\"\",$T$7)","v":{"$error":"#REF!"}},{"$f":"IF(V245>=#REF!,\"\",IF(V245<=#REF!,#REF!,#REF!))","v":{"$error":"#REF!"}},{"$f":"IF(V245>#REF!,\"\",#REF!)","v":{"$error":"#REF!"}},null,null,null,null,null,null,null,238]
[239,{"$f":"IF(A246>=#REF!,\"\",IF(A246<=#REF!,#REF!,#REF!))","v":{"$error":"#REF!"}},{"$f":"IF(A246>=#REF!,\"\",IF(A246<=#REF!,#REF!,#REF!))","v":{"$error":"#REF!"}},{"$f":"IF(A246>#REF!,\"\",#REF!)","v":{"$error":"#REF!"}},null,239,{"$f":"IF(F246>=#REF!,\"\",IF(F246<=#REF!,#REF!,#REF!))","v":{"$error":"#REF!"}},{"$f":"IF(F246>=#REF!,\"\",IF(F246<=#REF!,#REF!,#REF!))","v":{"$error":"#REF!"}},{"$f":"IF(F246>#REF!,\"\",PMT(#REF!/12,#REF!,-#REF!))","v":{"$error":"#REF!"}},null,null,null,null,239,{"$f":"IF(N246>#REF!,\"\",$L$7)","v":{"$error":"#REF!"}},{"$f":"IF(N246>=#REF!,\"\",IF(N246<=#REF!,#REF!,#REF!))","v":{"$error":"#REF!"}},{"$f":"IF(N246>#REF!,\"\",#REF!)","v":{"$error":"#REF!"}},null,null,null,null,239,{"$f":"IF(V246>#REF!,\"\",$T$7)","v":{"$error":"#REF!"}},{"$f":"IF(V246>=#REF!,\"\",IF(V246<=#REF!,#REF!,#REF!))","v":{"$error":"#REF!"}},{"$f":"IF(V246>#REF!,\"\",#REF!)","v":{"$error":"#REF!"}},null,null,null,null,null,null,null,239]
[240,{"$f":"IF(A247>=#REF!,\"\",IF(A247<=#REF!,#REF!,#REF!))","v":{"$error":"#REF!"}},{"$f":"IF(A247>=#REF!,\"\",IF(A247<=#REF!,#REF!,#REF!))","v":{"$error":"#REF!"}},{"$f":"IF(A247>#REF!,\"\",#REF!)","v":{"$error":"#REF!"}},null,240,{"$f":"IF(F247>=#REF!,\"\",IF(F247<=#REF!,#REF!,#REF!))","v":{"$error":"#REF!"}},{"$f":"IF(F247>=#REF!,\"\",IF(F247<=#REF!,#REF!,#REF!))","v":{"$error":"#REF!"}},{"$f":"IF(F247>#REF!,\"\",PMT(#REF!/12,#REF!,-#REF!))","v":{"$error":"#REF!"}},null,null,null,null,240,{"$f":"IF(N247>#REF!,\"\",$L$7)","v":{"$error":"#REF!"}},{"$f":"IF(N247>=#REF!,\"\",IF(N247<=#REF!,#REF!,#REF!))","v":{"$error":"#REF!"}},{"$f":"IF(N247>#REF!,\"\",#REF!)","v":{"$error":"#REF!"}},null,null,null,null,240,{"$f":"IF(V247>#REF!,\"\",$T$7)","v":{"$error":"#REF!"}},{"$f":"IF(V247>=#REF!,\"\",IF(V247<=#REF!,#REF!,#REF!))","v":{"$error":"#REF!"}},{"$f":"IF(V247>#REF!,\"\",#REF!)","v":{"$error":"#REF!"}},null,null,null,null,null,null,null,240]
[241,{"$f":"IF(A248>=#REF!,\"\",IF(A248<=#REF!,#REF!,#REF!))","v":{"$error":"#REF!"}},{"$f":"IF(A248>=#REF!,\"\",IF(A248<=#REF!,#REF!,#REF!))","v":{"$error":"#REF!"}},{"$f":"IF(A248>#REF!,\"\",#REF!)","v":{"$error":"#REF!"}},null,241,{"$f":"IF(F248>=#REF!,\"\",IF(F248<=#REF!,#REF!,#REF!))","v":{"$error":"#REF!"}},{"$f":"IF(F248>=#REF!,\"\",IF(F248<=#REF!,#REF!,#REF!))","v":{"$error":"#REF!"}},{"$f":"IF(F248>#REF!,\"\",PMT(#REF!/12,#REF!,-#REF!))","v":{"$error":"#REF!"}},null,null,null,null,241,{"$f":"IF(N248>#REF!,\"\",$L$7)","v":{"$error":"#REF!"}},{"$f":"IF(N248>=#REF!,\"\",IF(N248<=#REF!,#REF!,#REF!))","v":{"$error":"#REF!"}},{"$f":"IF(N248>#REF!,\"\",#REF!)","v":{"$error":"#REF!"}},null,null,null,null,241,{"$f":"IF(V248>#REF!,\"\",$T$7)","v":{"$error":"#REF!"}},{"$f":"IF(V248>=#REF!,\"\",IF(V248<=#REF!,#REF!,#REF!))","v":{"$error":"#REF!"}},{"$f":"IF(V248>#REF!,\"\",#REF!)","v":{"$error":"#REF!"}},null,null,null,null,null,null,null,241]
[242,{"$f":"IF(A249>=#REF!,\"\",IF(A249<=#REF!,#REF!,#REF!))","v":{"$error":"#REF!"}},{"$f":"IF(A249>=#REF!,\"\",IF(A249<=#REF!,#REF!,#REF!))","v":{"$error":"#REF!"}},{"$f":"IF(A249>#REF!,\"\",#REF!)","v":{"$error":"#REF!"}},null,242,{"$f":"IF(F249>=#REF!,\"\",IF(F249<=#REF!,#REF!,#REF!))","v":{"$error":"#REF!"}},{"$f":"IF(F249>=#REF!,\"\",IF(F249<=#REF!,#REF!,#REF!))","v":{"$error":"#REF!"}},{"$f":"IF(F249>#REF!,\"\",PMT(#REF!/12,#REF!,-#REF!))","v":{"$error":"#REF!"}},null,null,null,null,242,{"$f":"IF(N249>#REF!,\"\",$L$7)","v":{"$error":"#REF!"}},{"$f":"IF(N249>=#REF!,\"\",IF(N249<=#REF!,#REF!,#REF!))","v":{"$error":"#REF!"}},{"$f":"IF(N249>#REF!,\"\",#REF!)","v":{"$error":"#REF!"}},null,null,null,null,242,{"$f":"IF(V249>#REF!,\"\",$T$7)","v":{"$error":"#REF!"}},{"$f":"IF(V249>=#REF!,\"\",IF(V249<=#REF!,#REF!,#REF!))","v":{"$error":"#REF!"}},{"$f":"IF(V249>#REF!,\"\",#REF!)","v":{"$error":"#REF!"}},null,null,null,null,null,null,null,242]
[243,{"$f":"IF(A250>=#REF!,\"\",IF(A250<=#REF!,#REF!,#REF!))","v":{"$error":"#REF!"}},{"$f":"IF(A250>=#REF!,\"\",IF(A250<=#REF!,#REF!,#REF!))","v":{"$error":"#REF!"}},{"$f":"IF(A250>#REF!,\"\",#REF!)","v":{"$error":"#REF!"}},null,243,{"$f":"IF(F250>=#REF!,\"\",IF(F250<=#REF!,#REF!,#REF!))","v":{"$error":"#REF!"}},{"$f":"IF(F250>=#REF!,\"\",IF(F250<=#REF!,#REF!,#REF!))","v":{"$error":"#REF!"}},{"$f":"IF(F250>#REF!,\"\",PMT(#REF!/12,#REF!,-#REF!))","v":{"$error":"#REF!"}},null,null,null,null,243,{"$f":"IF(N250>#REF!,\"\",$L$7)","v":{"$error":"#REF!"}},{"$f":"IF(N250>=#REF!,\"\",IF(N250<=#REF!,#REF!,#REF!))","v":{"$error":"#REF!"}},{"$f":"IF(N250>#REF!,\"\",#REF!)","v":{"$error":"#REF!"}},null,null,null,null,243,{"$f":"IF(V250>#REF!,\"\",$T$7)","v":{"$error":"#REF!"}},{"$f":"IF(V250>=#REF!,\"\",IF(V250<=#REF!,#REF!,#REF!))","v":{"$error":"#REF!"}},{"$f":"IF(V250>#REF!,\"\",#REF!)","v":{"$error":"#REF!"}},null,null,null,null,null,null,null,243]
[244,{"$f":"IF(A251>=#REF!,\"\",IF(A251<=#REF!,#REF!,#REF!))","v":{"$error":"#REF!"}},{"$f":"IF(A251>=#REF!,\"\",IF(A251<=#REF!,#REF!,#REF!))","v":{"$error":"#REF!"}},{"$f":"IF(A251>#REF!,\"\",#REF!)","v":{"$error":"#REF!"}},null,244,{"$f":"IF(F251>=#REF!,\"\",IF(F251<=#REF!,#REF!,#REF!))","v":{"$error":"#REF!"}},{"$f":"IF(F251>=#REF!,\"\",IF(F251<=#REF!,#REF!,#REF!))","v":{"$error":"#REF!"}},{"$f":"IF(F251>#REF!,\"\",PMT(#REF!/12,#REF!,-#REF!))","v":{"$error":"#REF!"}},null,null,null,null,244,{"$f":"IF(N251>#REF!,\"\",$L$7)","v":{"$error":"#REF!"}},{"$f":"IF(N251>=#REF!,\"\",IF(N251<=#REF!,#REF!,#REF!))","v":{"$error":"#REF!"}},{"$f":"IF(N251>#REF!,\"\",#REF!)","v":{"$error":"#REF!"}},null,null,null,null,244,{"$f":"IF(V251>#REF!,\"\",$T$7)","v":{"$error":"#REF!"}},{"$f":"IF(V251>=#REF!,\"\",IF(V251<=#REF!,#REF!,#REF!))","v":{"$error":"#REF!"}},{"$f":"IF(V251>#REF!,\"\",#REF!)","v":{"$error":"#REF!"}},null,null,null,null,null,null,null,244]
[245,{"$f":"IF(A252>=#REF!,\"\",IF(A252<=#REF!,#REF!,#REF!))","v":{"$error":"#REF!"}},{"$f":"IF(A252>=#REF!,\"\",IF(A252<=#REF!,#REF!,#REF!))","v":{"$error":"#REF!"}},{"$f":"IF(A252>#REF!,\"\",#REF!)","v":{"$error":"#REF!"}},null,245,{"$f":"IF(F252>=#REF!,\"\",IF(F252<=#REF!,#REF!,#REF!))","v":{"$error":"#REF!"}},{"$f":"IF(F252>=#REF!,\"\",IF(F252<=#REF!,#REF!,#REF!))","v":{"$error":"#REF!"}},{"$f":"IF(F252>#REF!,\"\",PMT(#REF!/12,#REF!,-#REF!))","v":{"$error":"#REF!"}},null,null,null,null,245,{"$f":"IF(N252>#REF!,\"\",$L$7)","v":{"$error":"#REF!"}},{"$f":"IF(N252>=#REF!,\"\",IF(N252<=#REF!,#REF!,#REF!))","v":{"$error":"#REF!"}},{"$f":"IF(N252>#REF!,\"\",#REF!)","v":{"$error":"#REF!"}},null,null,null,null,245,{"$f":"IF(V252>#REF!,\"\",$T$7)","v":{"$error":"#REF!"}},{"$f":"IF(V252>=#REF!,\"\",IF(V252<=#REF!,#REF!,#REF!))","v":{"$error":"#REF!"}},{"$f":"IF(V252>#REF!,\"\",#REF!)","v":{"$error":"#REF!"}},null,null,null,null,null,null,null,245]
[246,{"$f":"IF(A253>=#REF!,\"\",IF(A253<=#REF!,#REF!,#REF!))","v":{"$error":"#REF!"}},{"$f":"IF(A253>=#REF!,\"\",IF(A253<=#REF!,#REF!,#REF!))","v":{"$error":"#REF!"}},{"$f":"IF(A253>#REF!,\"\",#REF!)","v":{"$error":"#REF!"}},null,246,{"$f":"IF(F253>=#REF!,\"\",IF(F253<=#REF!,#REF!,#REF!))","v":{"$error":"#REF!"}},{"$f":"IF(F253>=#REF!,\"\",IF(F253<=#REF!,#REF!,#REF!))","v":{"$error":"#REF!"}},{"$f":"IF(F253>#REF!,\"\",PMT(#REF!/12,#REF!,-#REF!))","v":{"$error":"#REF!"}},null,null,null,null,246,{"$f":"IF(N253>#REF!,\"\",$L$7)","v":{"$error":"#REF!"}},{"$f":"IF(N253>=#REF!,\"\",IF(N253<=#REF!,#REF!,#REF!))","v":{"$error":"#REF!"}},{"$f":"IF(N253>#REF!,\"\",#REF!)","v":{"$error":"#REF!"}},null,null,null,null,246,{"$f":"IF(V253>#REF!,\"\",$T$7)","v":{"$error":"#REF!"}},{"$f":"IF(V253>=#REF!,\"\",IF(V253<=#REF!,#REF!,#REF!))","v":{"$error":"#REF!"}},{"$f":"IF(V253>#REF!,\"\",#REF!)","v":{"$error":"#REF!"}},null,null,null,null,null,null,null,246]
[247,{"$f":"IF(A254>=#REF!,\"\",IF(A254<=#REF!,#REF!,#REF!))","v":{"$error":"#REF!"}},{"$f":"IF(A254>=#REF!,\"\",IF(A254<=#REF!,#REF!,#REF!))","v":{"$error":"#REF!"}},{"$f":"IF(A254>#REF!,\"\",#REF!)","v":{"$error":"#REF!"}},null,247,{"$f":"IF(F254>=#REF!,\"\",IF(F254<=#REF!,#REF!,#REF!))","v":{"$error":"#REF!"}},{"$f":"IF(F254>=#REF!,\"\",IF(F254<=#REF!,#REF!,#REF!))","v":{"$error":"#REF!"}},{"$f":"IF(F254>#REF!,\"\",PMT(#REF!/12,#REF!,-#REF!))","v":{"$error":"#REF!"}},null,null,null,null,247,{"$f":"IF(N254>#REF!,\"\",$L$7)","v":{"$error":"#REF!"}},{"$f":"IF(N254>=#REF!,\"\",IF(N254<=#REF!,#REF!,#REF!))","v":{"$error":"#REF!"}},{"$f":"IF(N254>#REF!,\"\",#REF!)","v":{"$error":"#REF!"}},null,null,null,null,247,{"$f":"IF(V254>#REF!,\"\",$T$7)","v":{"$error":"#REF!"}},{"$f":"IF(V254>=#REF!,\"\",IF(V254<=#REF!,#REF!,#REF!))","v":{"$error":"#REF!"}},{"$f":"IF(V254>#REF!,\"\",#REF!)","v":{"$error":"#REF!"}},null,null,null,null,null,null,null,247]
[248,{"$f":"IF(A255>=#REF!,\"\",IF(A255<=#REF!,#REF!,#REF!))","v":{"$error":"#REF!"}},{"$f":"IF(A255>=#REF!,\"\",IF(A255<=#REF!,#REF!,#REF!))","v":{"$error":"#REF!"}},{"$f":"IF(A255>#REF!,\"\",#REF!)","v":{"$error":"#REF!"}},null,248,{"$f":"IF(F255>=#REF!,\"\",IF(F255<=#REF!,#REF!,#REF!))","v":{"$error":"#REF!"}},{"$f":"IF(F255>=#REF!,\"\",IF(F255<=#REF!,#REF!,#REF!))","v":{"$error":"#REF!"}},{"$f":"IF(F255>#REF!,\"\",PMT(#REF!/12,#REF!,-#REF!))","v":{"$error":"#REF!"}},null,null,null,null,248,{"$f":"IF(N255>#REF!,\"\",$L$7)","v":{"$error":"#REF!"}},{"$f":"IF(N255>=#REF!,\"\",IF(N255<=#REF!,#REF!,#REF!))","v":{"$error":"#REF!"}},{"$f":"IF(N255>#REF!,\"\",#REF!)","v":{"$error":"#REF!"}},null,null,null,null,248,{"$f":"IF(V255>#REF!,\"\",$T$7)","v":{"$error":"#REF!"}},{"$f":"IF(V255>=#REF!,\"\",IF(V255<=#REF!,#REF!,#REF!))","v":{"$error":"#REF!"}},{"$f":"IF(V255>#REF!,\"\",#REF!)","v":{"$error":"#REF!"}},null,null,null,null,null,null,null,248]
[249,{"$f":"IF(A256>=#REF!,\"\",IF(A256<=#REF!,#REF!,#REF!))","v":{"$error":"#REF!"}},{"$f":"IF(A256>=#REF!,\"\",IF(A256<=#REF!,#REF!,#REF!))","v":{"$error":"#REF!"}},{"$f":"IF(A256>#REF!,\"\",#REF!)","v":{"$error":"#REF!"}},null,249,{"$f":"IF(F256>=#REF!,\"\",IF(F256<=#REF!,#REF!,#REF!))","v":{"$error":"#REF!"}},{"$f":"IF(F256>=#REF!,\"\",IF(F256<=#REF!,#REF!,#REF!))","v":{"$error":"#REF!"}},{"$f":"IF(F256>#REF!,\"\",PMT(#REF!/12,#REF!,-#REF!))","v":{"$error":"#REF!"}},null,null,null,null,249,{"$f":"IF(N256>#REF!,\"\",$L$7)","v":{"$error":"#REF!"}},{"$f":"IF(N256>=#REF!,\"\",IF(N256<=#REF!,#REF!,#REF!))","v":{"$error":"#REF!"}},{"$f":"IF(N256>#REF!,\"\",#REF!)","v":{"$error":"#REF!"}},null,null,null,null,249,{"$f":"IF(V256>#REF!,\"\",$T$7)","v":{"$error":"#REF!"}},{"$f":"IF(V256>=#REF!,\"\",IF(V256<=#REF!,#REF!,#REF!))","v":{"$error":"#REF!"}},{"$f":"IF(V256>#REF!,\"\",#REF!)","v":{"$error":"#REF!"}},null,null,null,null,null,null,null,249]
[250,{"$f":"IF(A257>=#REF!,\"\",IF(A257<=#REF!,#REF!,#REF!))","v":{"$error":"#REF!"}},{"$f":"IF(A257>=#REF!,\"\",IF(A257<=#REF!,#REF!,#REF!))","v":{"$error":"#REF!"}},{"$f":"IF(A257>#REF!,\"\",#REF!)","v":{"$error":"#REF!"}},null,250,{"$f":"IF(F257>=#REF!,\"\",IF(F257<=#REF!,#REF!,#REF!))","v":{"$error":"#REF!"}},{"$f":"IF(F257>=#REF!,\"\",IF(F257<=#REF!,#REF!,#REF!))","v":{"$error":"#REF!"}},{"$f":"IF(F257>#REF!,\"\",PMT(#REF!/12,#REF!,-#REF!))","v":{"$error":"#REF!"}},null,null,null,null,250,{"$f":"IF(N257>#REF!,\"\",$L$7)","v":{"$error":"#REF!"}},{"$f":"IF(N257>=#REF!,\"\",IF(N257<=#REF!,#REF!,#REF!))","v":{"$error":"#REF!"}},{"$f":"IF(N257>#REF!,\"\",#REF!)","v":{"$error":"#REF!"}},null,null,null,null,250,{"$f":"IF(V257>#REF!,\"\",$T$7)","v":{"$error":"#REF!"}},{"$f":"IF(V257>=#REF!,\"\",IF(V257<=#REF!,#REF!,#REF!))","v":{"$error":"#REF!"}},{"$f":"IF(V257>#REF!,\"\",#REF!)","v":{"$error":"#REF!"}},null,null,null,null,null,null,null,250]
[251,{"$f":"IF(A258>=#REF!,\"\",IF(A258<=#REF!,#REF!,#REF!))","v":{"$error":"#REF!"}},{"$f":"IF(A258>=#REF!,\"\",IF(A258<=#REF!,#REF!,#REF!))","v":{"$error":"#REF!"}},{"$f":"IF(A258>#REF!,\"\",#REF!)","v":{"$error":"#REF!"}},null,251,{"$f":"IF(F258>=#REF!,\"\",IF(F258<=#REF!,#REF!,#REF!))","v":{"$error":"#REF!"}},{"$f":"IF(F258>=#REF!,\"\",IF(F258<=#REF!,#REF!,#REF!))","v":{"$error":"#REF!"}},{"$f":"IF(F258>#REF!,\"\",PMT(#REF!/12,#REF!,-#REF!))","v":{"$error":"#REF!"}},null,null,null,null,251,{"$f":"IF(N258>#REF!,\"\",$L$7)","v":{"$error":"#REF!"}},{"$f":"IF(N258>=#REF!,\"\",IF(N258<=#REF!,#REF!,#REF!))","v":{"$error":"#REF!"}},{"$f":"IF(N258>#REF!,\"\",#REF!)","v":{"$error":"#REF!"}},null,null,null,null,251,{"$f":"IF(V258>#REF!,\"\",$T$7)","v":{"$error":"#REF!"}},{"$f":"IF(V258>=#REF!,\"\",IF(V258<=#REF!,#REF!,#REF!))","v":{"$error":"#REF!"}},{"$f":"IF(V258>#REF!,\"\",#REF!)","v":{"$error":"#REF!"}},null,null,null,null,null,null,null,251]
[252,{"$f":"IF(A259>=#REF!,\"\",IF(A259<=#REF!,#REF!,#REF!))","v":{"$error":"#REF!"}},{"$f":"IF(A259>=#REF!,\"\",IF(A259<=#REF!,#REF!,#REF!))","v":{"$error":"#REF!"}},{"$f":"IF(A259>#REF!,\"\",#REF!)","v":{"$error":"#REF!"}},null,252,{"$f":"IF(F259>=#REF!,\"\",IF(F259<=#REF!,#REF!,#REF!))","v":{"$error":"#REF!"}},{"$f":"IF(F259>=#REF!,\"\",IF(F259<=#REF!,#REF!,#REF!))","v":{"$error":"#REF!"}},{"$f":"IF(F259>#REF!,\"\",PMT(#REF!/12,#REF!,-#REF!))","v":{"$error":"#REF!"}},null,null,null,null,252,{"$f":"IF(N259>#REF!,\"\",$L$7)","v":{"$error":"#REF!"}},{"$f":"IF(N259>=#REF!,\"\",IF(N259<=#REF!,#REF!,#REF!))","v":{"$error":"#REF!"}},{"$f":"IF(N259>#REF!,\"\",#REF!)","v":{"$error":"#REF!"}},null,null,null,null,252,{"$f":"IF(V259>#REF!,\"\",$T$7)","v":{"$error":"#REF!"}},{"$f":"IF(V259>=#REF!,\"\",IF(V259<=#REF!,#REF!,#REF!))","v":{"$error":"#REF!"}},{"$f":"IF(V259>#REF!,\"\",#REF!)","v":{"$error":"#REF!"}},null,null,null,null,null,null,null,252]
[253,{"$f":"IF(A260>=#REF!,\"\",IF(A260<=#REF!,#REF!,#REF!))","v":{"$error":"#REF!"}},{"$f":"IF(A260>=#REF!,\"\",IF(A260<=#REF!,#REF!,#REF!))","v":{"$error":"#REF!"}},{"$f":"IF(A260>#REF!,\"\",#REF!)","v":{"$error":"#REF!"}},null,253,{"$f":"IF(F260>=#REF!,\"\",IF(F260<=#REF!,#REF!,#REF!))","v":{"$error":"#REF!"}},{"$f":"IF(F260>=#REF!,\"\",IF(F260<=#REF!,#REF!,#REF!))","v":{"$error":"#REF!"}},{"$f":"IF(F260>#REF!,\"\",PMT(#REF!/12,#REF!,-#REF!))","v":{"$error":"#REF!"}},null,null,null,null,253,{"$f":"IF(N260>#REF!,\"\",$L$7)","v":{"$error":"#REF!"}},{"$f":"IF(N260>=#REF!,\"\",IF(N260<=#REF!,#REF!,#REF!))","v":{"$error":"#REF!"}},{"$f":"IF(N260>#REF!,\"\",#REF!)","v":{"$error":"#REF!"}},null,null,null,null,253,{"$f":"IF(V260>#REF!,\"\",$T$7)","v":{"$error":"#REF!"}},{"$f":"IF(V260>=#REF!,\"\",IF(V260<=#REF!,#REF!,#REF!))","v":{"$error":"#REF!"}},{"$f":"IF(V260>#REF!,\"\",#REF!)","v":{"$error":"#REF!"}},null,null,null,null,null,null,null,253]
[254,{"$f":"IF(A261>=#REF!,\"\",IF(A261<=#REF!,#REF!,#REF!))","v":{"$error":"#REF!"}},{"$f":"IF(A261>=#REF!,\"\",IF(A261<=#REF!,#REF!,#REF!))","v":{"$error":"#REF!"}},{"$f":"IF(A261>#REF!,\"\",#REF!)","v":{"$error":"#REF!"}},null,254,{"$f":"IF(F261>=#REF!,\"\",IF(F261<=#REF!,#REF!,#REF!))","v":{"$error":"#REF!"}},{"$f":"IF(F261>=#REF!,\"\",IF(F261<=#REF!,#REF!,#REF!))","v":{"$error":"#REF!"}},{"$f":"IF(F261>#REF!,\"\",PMT(#REF!/12,#REF!,-#REF!))","v":{"$error":"#REF!"}},null,null,null,null,254,{"$f":"IF(N261>#REF!,\"\",$L$7)","v":{"$error":"#REF!"}},{"$f":"IF(N261>=#REF!,\"\",IF(N261<=#REF!,#REF!,#REF!))","v":{"$error":"#REF!"}},{"$f":"IF(N261>#REF!,\"\",#REF!)","v":{"$error":"#REF!"}},null,null,null,null,254,{"$f":"IF(V261>#REF!,\"\",$T$7)","v":{"$error":"#REF!"}},{"$f":"IF(V261>=#REF!,\"\",IF(V261<=#REF!,#REF!,#REF!))","v":{"$error":"#REF!"}},{"$f":"IF(V261>#REF!,\"\",#REF!)","v":{"$error":"#REF!"}},null,null,null,null,null,null,null,254]
[255,{"$f":"IF(A262>=#REF!,\"\",IF(A262<=#REF!,#REF!,#REF!))","v":{"$error":"#REF!"}},{"$f":"IF(A262>=#REF!,\"\",IF(A262<=#REF!,#REF!,#REF!))","v":{"$error":"#REF!"}},{"$f":"IF(A262>#REF!,\"\",#REF!)","v":{"$error":"#REF!"}},null,255,{"$f":"IF(F262>=#REF!,\"\",IF(F262<=#REF!,#REF!,#REF!))","v":{"$error":"#REF!"}},{"$f":"IF(F262>=#REF!,\"\",IF(F262<=#REF!,#REF!,#REF!))","v":{"$error":"#REF!"}},{"$f":"IF(F262>#REF!,\"\",PMT(#REF!/12,#REF!,-#REF!))","v":{"$error":"#REF!"}},null,null,null,null,255,{"$f":"IF(N262>#REF!,\"\",$L$7)","v":{"$error":"#REF!"}},{"$f":"IF(N262>=#REF!,\"\",IF(N262<=#REF!,#REF!,#REF!))","v":{"$error":"#REF!"}},{"$f":"IF(N262>#REF!,\"\",#REF!)","v":{"$error":"#REF!"}},null,null,null,null,255,{"$f":"IF(V262>#REF!,\"\",$T$7)","v":{"$error":"#REF!"}},{"$f":"IF(V262>=#REF!,\"\",IF(V262<=#REF!,#REF!,#REF!))","v":{"$error":"#REF!"}},{"$f":"IF(V262>#REF!,\"\",#REF!)","v":{"$error":"#REF!"}},null,null,null,null,null,null,null,255]
[256,{"$f":"IF(A263>=#REF!,\"\",IF(A263<=#REF!,#REF!,#REF!))","v":{"$error":"#REF!"}},{"$f":"IF(A263>=#REF!,\"\",IF(A263<=#REF!,#REF!,#REF!))","v":{"$error":"#REF!"}},{"$f":"IF(A263>#REF!,\"\",#REF!)","v":{"$error":"#REF!"}},null,256,{"$f":"IF(F263>=#REF!,\"\",IF(F263<=#REF!,#REF!,#REF!))","v":{"$error":"#REF!"}},{"$f":"IF(F263>=#REF!,\"\",IF(F263<=#REF!,#REF!,#REF!))","v":{"$error":"#REF!"}},{"$f":"IF(F263>#REF!,\"\",PMT(#REF!/12,#REF!,-#REF!))","v":{"$error":"#REF!"}},null,null,null,null,256,{"$f":"IF(N263>#REF!,\"\",$L$7)","v":{"$error":"#REF!"}},{"$f":"IF(N263>=#REF!,\"\",IF(N263<=#REF!,#REF!,#REF!))","v":{"$error":"#REF!"}},{"$f":"IF(N263>#REF!,\"\",#REF!)","v":{"$error":"#REF!"}},null,null,null,null,256,{"$f":"IF(V263>#REF!,\"\",$T$7)","v":{"$error":"#REF!"}},{"$f":"IF(V263>=#REF!,\"\",IF(V263<=#REF!,#REF!,#REF!))","v":{"$error":"#REF!"}},{"$f":"IF(V263>#REF!,\"\",#REF!)","v":{"$error":"#REF!"}},null,null,null,null,null,null,null,256]
[257,{"$f":"IF(A264>=#REF!,\"\",IF(A264<=#REF!,#REF!,#REF!))","v":{"$error":"#REF!"}},{"$f":"IF(A264>=#REF!,\"\",IF(A264<=#REF!,#REF!,#REF!))","v":{"$error":"#REF!"}},{"$f":"IF(A264>#REF!,\"\",#REF!)","v":{"$error":"#REF!"}},null,257,{"$f":"IF(F264>=#REF!,\"\",IF(F264<=#REF!,#REF!,#REF!))","v":{"$error":"#REF!"}},{"$f":"IF(F264>=#REF!,\"\",IF(F264<=#REF!,#REF!,#REF!))","v":{"$error":"#REF!"}},{"$f":"IF(F264>#REF!,\"\",PMT(#REF!/12,#REF!,-#REF!))","v":{"$error":"#REF!"}},null,null,null,null,257,{"$f":"IF(N264>#REF!,\"\",$L$7)","v":{"$error":"#REF!"}},{"$f":"IF(N264>=#REF!,\"\",IF(N264<=#REF!,#REF!,#REF!))","v":{"$error":"#REF!"}},{"$f":"IF(N264>#REF!,\"\",#REF!)","v":{"$error":"#REF!"}},null,null,null,null,257,{"$f":"IF(V264>#REF!,\"\",$T$7)","v":{"$error":"#REF!"}},{"$f":"IF(V264>=#REF!,\"\",IF(V264<=#REF!,#REF!,#REF!))","v":{"$error":"#REF!"}},{"$f":"IF(V264>#REF!,\"\",#REF!)","v":{"$error":"#REF!"}},null,null,null,null,null,null,null,257]
[258,{"$f":"IF(A265>=#REF!,\"\",IF(A265<=#REF!,#REF!,#REF!))","v":{"$error":"#REF!"}},{"$f":"IF(A265>=#REF!,\"\",IF(A265<=#REF!,#REF!,#REF!))","v":{"$error":"#REF!"}},{"$f":"IF(A265>#REF!,\"\",#REF!)","v":{"$error":"#REF!"}},null,258,{"$f":"IF(F265>=#REF!,\"\",IF(F265<=#REF!,#REF!,#REF!))","v":{"$error":"#REF!"}},{"$f":"IF(F265>=#REF!,\"\",IF(F265<=#REF!,#REF!,#REF!))","v":{"$error":"#REF!"}},{"$f":"IF(F265>#REF!,\"\",PMT(#REF!/12,#REF!,-#REF!))","v":{"$error":"#REF!"}},null,null,null,null,258,{"$f":"IF(N265>#REF!,\"\",$L$7)","v":{"$error":"#REF!"}},{"$f":"IF(N265>=#REF!,\"\",IF(N265<=#REF!,#REF!,#REF!))","v":{"$error":"#REF!"}},{"$f":"IF(N265>#REF!,\"\",#REF!)","v":{"$error":"#REF!"}},null,null,null,null,258,{"$f":"IF(V265>#REF!,\"\",$T$7)","v":{"$error":"#REF!"}},{"$f":"IF(V265>=#REF!,\"\",IF(V265<=#REF!,#REF!,#REF!))","v":{"$error":"#REF!"}},{"$f":"IF(V265>#REF!,\"\",#REF!)","v":{"$error":"#REF!"}},null,null,null,null,null,null,null,258]
[259,{"$f":"IF(A266>=#REF!,\"\",IF(A266<=#REF!,#REF!,#REF!))","v":{"$error":"#REF!"}},{"$f":"IF(A266>=#REF!,\"\",IF(A266<=#REF!,#REF!,#REF!))","v":{"$error":"#REF!"}},{"$f":"IF(A266>#REF!,\"\",#REF!)","v":{"$error":"#REF!"}},null,259,{"$f":"IF(F266>=#REF!,\"\",IF(F266<=#REF!,#REF!,#REF!))","v":{"$error":"#REF!"}},{"$f":"IF(F266>=#REF!,\"\",IF(F266<=#REF!,#REF!,#REF!))","v":{"$error":"#REF!"}},{"$f":"IF(F266>#REF!,\"\",PMT(#REF!/12,#REF!,-#REF!))","v":{"$error":"#REF!"}},null,null,null,null,259,{"$f":"IF(N266>#REF!,\"\",$L$7)","v":{"$error":"#REF!"}},{"$f":"IF(N266>=#REF!,\"\",IF(N266<=#REF!,#REF!,#REF!))","v":{"$error":"#REF!"}},{"$f":"IF(N266>#REF!,\"\",#REF!)","v":{"$error":"#REF!"}},null,null,null,null,259,{"$f":"IF(V266>#REF!,\"\",$T$7)","v":{"$error":"#REF!"}},{"$f":"IF(V266>=#REF!,\"\",IF(V266<=#REF!,#REF!,#REF!))","v":{"$error":"#REF!"}},{"$f":"IF(V266>#REF!,\"\",#REF!)","v":{"$error":"#REF!"}},null,null,null,null,null,null,null,259]
[260,{"$f":"IF(A267>=#REF!,\"\",IF(A267<=#REF!,#REF!,#REF!))","v":{"$error":"#REF!"}},{"$f":"IF(A267>=#REF!,\"\",IF(A267<=#REF!,#REF!,#REF!))","v":{"$error":"#REF!"}},{"$f":"IF(A267>#REF!,\"\",#REF!)","v":{"$error":"#REF!"}},null,260,{"$f":"IF(F267>=#REF!,\"\",IF(F267<=#REF!,#REF!,#REF!))","v":{"$error":"#REF!"}},{"$f":"IF(F267>=#REF!,\"\",IF(F267<=#REF!,#REF!,#REF!))","v":{"$error":"#REF!"}},{"$f":"IF(F267>#REF!,\"\",PMT(#REF!/12,#REF!,-#REF!))","v":{"$error":"#REF!"}},null,null,null,null,260,{"$f":"IF(N267>#REF!,\"\",$L$7)","v":{"$error":"#REF!"}},{"$f":"IF(N267>=#REF!,\"\",IF(N267<=#REF!,#REF!,#REF!))","v":{"$error":"#REF!"}},{"$f":"IF(N267>#REF!,\"\",#REF!)","v":{"$error":"#REF!"}},null,null,null,null,260,{"$f":"IF(V267>#REF!,\"\",$T$7)","v":{"$error":"#REF!"}},{"$f":"IF(V267>=#REF!,\"\",IF(V267<=#REF!,#REF!,#REF!))","v":{"$error":"#REF!"}},{"$f":"IF(V267>#REF!,\"\",#REF!)","v":{"$error":"#REF!"}},null,null,null,null,null,null,null,260]
[261,{"$f":"IF(A268>=#REF!,\"\",IF(A268<=#REF!,#REF!,#REF!))","v":{"$error":"#REF!"}},{"$f":"IF(A268>=#REF!,\"\",IF(A268<=#REF!,#REF!,#REF!))","v":{"$error":"#REF!"}},{"$f":"IF(A268>#REF!,\"\",#REF!)","v":{"$error":"#REF!"}},null,261,{"$f":"IF(F268>=#REF!,\"\",IF(F268<=#REF!,#REF!,#REF!))","v":{"$error":"#REF!"}},{"$f":"IF(F268>=#REF!,\"\",IF(F268<=#REF!,#REF!,#REF!))","v":{"$error":"#REF!"}},{"$f":"IF(F268>#REF!,\"\",PMT(#REF!/12,#REF!,-#REF!))","v":{"$error":"#REF!"}},null,null,null,null,261,{"$f":"IF(N268>#REF!,\"\",$L$7)","v":{"$error":"#REF!"}},{"$f":"IF(N268>=#REF!,\"\",IF(N268<=#REF!,#REF!,#REF!))","v":{"$error":"#REF!"}},{"$f":"IF(N268>#REF!,\"\",#REF!)","v":{"$error":"#REF!"}},null,null,null,null,261,{"$f":"IF(V268>#REF!,\"\",$T$7)","v":{"$error":"#REF!"}},{"$f":"IF(V268>=#REF!,\"\",IF(V268<=#REF!,#REF!,#REF!))","v":{"$error":"#REF!"}},{"$f":"IF(V268>#REF!,\"\",#REF!)","v":{"$error":"#REF!"}},null,null,null,null,null,null,null,261]
[262,{"$f":"IF(A269>=#REF!,\"\",IF(A269<=#REF!,#REF!,#REF!))","v":{"$error":"#REF!"}},{"$f":"IF(A269>=#REF!,\"\",IF(A269<=#REF!,#REF!,#REF!))","v":{"$error":"#REF!"}},{"$f":"IF(A269>#REF!,\"\",#REF!)","v":{"$error":"#REF!"}},null,262,{"$f":"IF(F269>=#REF!,\"\",IF(F269<=#REF!,#REF!,#REF!))","v":{"$error":"#REF!"}},{"$f":"IF(F269>=#REF!,\"\",IF(F269<=#REF!,#REF!,#REF!))","v":{"$error":"#REF!"}},{"$f":"IF(F269>#REF!,\"\",PMT(#REF!/12,#REF!,-#REF!))","v":{"$error":"#REF!"}},null,null,null,null,262,{"$f":"IF(N269>#REF!,\"\",$L$7)","v":{"$error":"#REF!"}},{"$f":"IF(N269>=#REF!,\"\",IF(N269<=#REF!,#REF!,#REF!))","v":{"$error":"#REF!"}},{"$f":"IF(N269>#REF!,\"\",#REF!)","v":{"$error":"#REF!"}},null,null,null,null,262,{"$f":"IF(V269>#REF!,\"\",$T$7)","v":{"$error":"#REF!"}},{"$f":"IF(V269>=#REF!,\"\",IF(V269<=#REF!,#REF!,#REF!))","v":{"$error":"#REF!"}},{"$f":"IF(V269>#REF!,\"\",#REF!)","v":{"$error":"#REF!"}},null,null,null,null,null,null,null,262]
[263,{"$f":"IF(A270>=#REF!,\"\",IF(A270<=#REF!,#REF!,#REF!))","v":{"$error":"#REF!"}},{"$f":"IF(A270>=#REF!,\"\",IF(A270<=#REF!,#REF!,#REF!))","v":{"$error":"#REF!"}},{"$f":"IF(A270>#REF!,\"\",#REF!)","v":{"$error":"#REF!"}},null,263,{"$f":"IF(F270>=#REF!,\"\",IF(F270<=#REF!,#REF!,#REF!))","v":{"$error":"#REF!"}},{"$f":"IF(F270>=#REF!,\"\",IF(F270<=#REF!,#REF!,#REF!))","v":{"$error":"#REF!"}},{"$f":"IF(F270>#REF!,\"\",PMT(#REF!/12,#REF!,-#REF!))","v":{"$error":"#REF!"}},null,null,null,null,263,{"$f":"IF(N270>#REF!,\"\",$L$7)","v":{"$error":"#REF!"}},{"$f":"IF(N270>=#REF!,\"\",IF(N270<=#REF!,#REF!,#REF!))","v":{"$error":"#REF!"}},{"$f":"IF(N270>#REF!,\"\",#REF!)","v":{"$error":"#REF!"}},null,null,null,null,263,{"$f":"IF(V270>#REF!,\"\",$T$7)","v":{"$error":"#REF!"}},{"$f":"IF(V270>=#REF!,\"\",IF(V270<=#REF!,#REF!,#REF!))","v":{"$error":"#REF!"}},{"$f":"IF(V270>#REF!,\"\",#REF!)","v":{"$error":"#REF!"}},null,null,null,null,null,null,null,263]
[264,{"$f":"IF(A271>=#REF!,\"\",IF(A271<=#REF!,#REF!,#REF!))","v":{"$error":"#REF!"}},{"$f":"IF(A271>=#REF!,\"\",IF(A271<=#REF!,#REF!,#REF!))","v":{"$error":"#REF!"}},{"$f":"IF(A271>#REF!,\"\",#REF!)","v":{"$error":"#REF!"}},null,264,{"$f":"IF(F271>=#REF!,\"\",IF(F271<=#REF!,#REF!,#REF!))","v":{"$error":"#REF!"}},{"$f":"IF(F271>=#REF!,\"\",IF(F271<=#REF!,#REF!,#REF!))","v":{"$error":"#REF!"}},{"$f":"IF(F271>#REF!,\"\",PMT(#REF!/12,#REF!,-#REF!))","v":{"$error":"#REF!"}},null,null,null,null,264,{"$f":"IF(N271>#REF!,\"\",$L$7)","v":{"$error":"#REF!"}},{"$f":"IF(N271>=#REF!,\"\",IF(N271<=#REF!,#REF!,#REF!))","v":{"$error":"#REF!"}},{"$f":"IF(N271>#REF!,\"\",#REF!)","v":{"$error":"#REF!"}},null,null,null,null,264,{"$f":"IF(V271>#REF!,\"\",$T$7)","v":{"$error":"#REF!"}},{"$f":"IF(V271>=#REF!,\"\",IF(V271<=#REF!,#REF!,#REF!))","v":{"$error":"#REF!"}},{"$f":"IF(V271>#REF!,\"\",#REF!)","v":{"$error":"#REF!"}},null,null,null,null,null,null,null,264]
[265,{"$f":"IF(A272>=#REF!,\"\",IF(A272<=#REF!,#REF!,#REF!))","v":{"$error":"#REF!"}},{"$f":"IF(A272>=#REF!,\"\",IF(A272<=#REF!,#REF!,#REF!))","v":{"$error":"#REF!"}},{"$f":"IF(A272>#REF!,\"\",#REF!)","v":{"$error":"#REF!"}},null,265,{"$f":"IF(F272>=#REF!,\"\",IF(F272<=#REF!,#REF!,#REF!))","v":{"$error":"#REF!"}},{"$f":"IF(F272>=#REF!,\"\",IF(F272<=#REF!,#REF!,#REF!))","v":{"$error":"#REF!"}},{"$f":"IF(F272>#REF!,\"\",PMT(#REF!/12,#REF!,-#REF!))","v":{"$error":"#REF!"}},null,null,null,null,265,{"$f":"IF(N272>#REF!,\"\",$L$7)","v":{"$error":"#REF!"}},{"$f":"IF(N272>=#REF!,\"\",IF(N272<=#REF!,#REF!,#REF!))","v":{"$error":"#REF!"}},{"$f":"IF(N272>#REF!,\"\",#REF!)","v":{"$error":"#REF!"}},null,null,null,null,265,{"$f":"IF(V272>#REF!,\"\",$T$7)","v":{"$error":"#REF!"}},{"$f":"IF(V272>=#REF!,\"\",IF(V272<=#REF!,#REF!,#REF!))","v":{"$error":"#REF!"}},{"$f":"IF(V272>#REF!,\"\",#REF!)","v":{"$error":"#REF!"}},null,null,null,null,null,null,null,265]
[266,{"$f":"IF(A273>=#REF!,\"\",IF(A273<=#REF!,#REF!,#REF!))","v":{"$error":"#REF!"}},{"$f":"IF(A273>=#REF!,\"\",IF(A273<=#REF!,#REF!,#REF!))","v":{"$error":"#REF!"}},{"$f":"IF(A273>#REF!,\"\",#REF!)","v":{"$error":"#REF!"}},null,266,{"$f":"IF(F273>=#REF!,\"\",IF(F273<=#REF!,#REF!,#REF!))","v":{"$error":"#REF!"}},{"$f":"IF(F273>=#REF!,\"\",IF(F273<=#REF!,#REF!,#REF!))","v":{"$error":"#REF!"}},{"$f":"IF(F273>#REF!,\"\",PMT(#REF!/12,#REF!,-#REF!))","v":{"$error":"#REF!"}},null,null,null,null,266,{"$f":"IF(N273>#REF!,\"\",$L$7)","v":{"$error":"#REF!"}},{"$f":"IF(N273>=#REF!,\"\",IF(N273<=#REF!,#REF!,#REF!))","v":{"$error":"#REF!"}},{"$f":"IF(N273>#REF!,\"\",#REF!)","v":{"$error":"#REF!"}},null,null,null,null,266,{"$f":"IF(V273>#REF!,\"\",$T$7)","v":{"$error":"#REF!"}},{"$f":"IF(V273>=#REF!,\"\",IF(V273<=#REF!,#REF!,#REF!))","v":{"$error":"#REF!"}},{"$f":"IF(V273>#REF!,\"\",#REF!)","v":{"$error":"#REF!"}},null,null,null,null,null,null,null,266]
[267,{"$f":"IF(A274>=#REF!,\"\",IF(A274<=#REF!,#REF!,#REF!))","v":{"$error":"#REF!"}},{"$f":"IF(A274>=#REF!,\"\",IF(A274<=#REF!,#REF!,#REF!))","v":{"$error":"#REF!"}},{"$f":"IF(A274>#REF!,\"\",#REF!)","v":{"$error":"#REF!"}},null,267,{"$f":"IF(F274>=#REF!,\"\",IF(F274<=#REF!,#REF!,#REF!))","v":{"$error":"#REF!"}},{"$f":"IF(F274>=#REF!,\"\",IF(F274<=#REF!,#REF!,#REF!))","v":{"$error":"#REF!"}},{"$f":"IF(F274>#REF!,\"\",PMT(#REF!/12,#REF!,-#REF!))","v":{"$error":"#REF!"}},null,null,null,null,267,{"$f":"IF(N274>#REF!,\"\",$L$7)","v":{"$error":"#REF!"}},{"$f":"IF(N274>=#REF!,\"\",IF(N274<=#REF!,#REF!,#REF!))","v":{"$error":"#REF!"}},{"$f":"IF(N274>#REF!,\"\",#REF!)","v":{"$error":"#REF!"}},null,null,null,null,267,{"$f":"IF(V274>#REF!,\"\",$T$7)","v":{"$error":"#REF!"}},{"$f":"IF(V274>=#REF!,\"\",IF(V274<=#REF!,#REF!,#REF!))","v":{"$error":"#REF!"}},{"$f":"IF(V274>#REF!,\"\",#REF!)","v":{"$error":"#REF!"}},null,null,null,null,null,null,null,267]
[268,{"$f":"IF(A275>=#REF!,\"\",IF(A275<=#REF!,#REF!,#REF!))","v":{"$error":"#REF!"}},{"$f":"IF(A275>=#REF!,\"\",IF(A275<=#REF!,#REF!,#REF!))","v":{"$error":"#REF!"}},{"$f":"IF(A275>#REF!,\"\",#REF!)","v":{"$error":"#REF!"}},null,268,{"$f":"IF(F275>=#REF!,\"\",IF(F275<=#REF!,#REF!,#REF!))","v":{"$error":"#REF!"}},{"$f":"IF(F275>=#REF!,\"\",IF(F275<=#REF!,#REF!,#REF!))","v":{"$error":"#REF!"}},{"$f":"IF(F275>#REF!,\"\",PMT(#REF!/12,#REF!,-#REF!))","v":{"$error":"#REF!"}},null,null,null,null,268,{"$f":"IF(N275>#REF!,\"\",$L$7)","v":{"$error":"#REF!"}},{"$f":"IF(N275>=#REF!,\"\",IF(N275<=#REF!,#REF!,#REF!))","v":{"$error":"#REF!"}},{"$f":"IF(N275>#REF!,\"\",#REF!)","v":{"$error":"#REF!"}},null,null,null,null,268,{"$f":"IF(V275>#REF!,\"\",$T$7)","v":{"$error":"#REF!"}},{"$f":"IF(V275>=#REF!,\"\",IF(V275<=#REF!,#REF!,#REF!))","v":{"$error":"#REF!"}},{"$f":"IF(V275>#REF!,\"\",#REF!)","v":{"$error":"#REF!"}},null,null,null,null,null,null,null,268]
[269,{"$f":"IF(A276>=#REF!,\"\",IF(A276<=#REF!,#REF!,#REF!))","v":{"$error":"#REF!"}},{"$f":"IF(A276>=#REF!,\"\",IF(A276<=#REF!,#REF!,#REF!))","v":{"$error":"#REF!"}},{"$f":"IF(A276>#REF!,\"\",#REF!)","v":{"$error":"#REF!"}},null,269,{"$f":"IF(F276>=#REF!,\"\",IF(F276<=#REF!,#REF!,#REF!))","v":{"$error":"#REF!"}},{"$f":"IF(F276>=#REF!,\"\",IF(F276<=#REF!,#REF!,#REF!))","v":{"$error":"#REF!"}},{"$f":"IF(F276>#REF!,\"\",PMT(#REF!/12,#REF!,-#REF!))","v":{"$error":"#REF!"}},null,null,null,null,269,{"$f":"IF(N276>#REF!,\"\",$L$7)","v":{"$error":"#REF!"}},{"$f":"IF(N276>=#REF!,\"\",IF(N276<=#REF!,#REF!,#REF!))","v":{"$error":"#REF!"}},{"$f":"IF(N276>#REF!,\"\",#REF!)","v":{"$error":"#REF!"}},null,null,null,null,269,{"$f":"IF(V276>#REF!,\"\",$T$7)","v":{"$error":"#REF!"}},{"$f":"IF(V276>=#REF!,\"\",IF(V276<=#REF!,#REF!,#REF!))","v":{"$error":"#REF!"}},{"$f":"IF(V276>#REF!,\"\",#REF!)","v":{"$error":"#REF!"}},null,null,null,null,null,null,null,269]
[270,{"$f":"IF(A277>=#REF!,\"\",IF(A277<=#REF!,#REF!,#REF!))","v":{"$error":"#REF!"}},{"$f":"IF(A277>=#REF!,\"\",IF(A277<=#REF!,#REF!,#REF!))","v":{"$error":"#REF!"}},{"$f":"IF(A277>#REF!,\"\",#REF!)","v":{"$error":"#REF!"}},null,270,{"$f":"IF(F277>=#REF!,\"\",IF(F277<=#REF!,#REF!,#REF!))","v":{"$error":"#REF!"}},{"$f":"IF(F277>=#REF!,\"\",IF(F277<=#REF!,#REF!,#REF!))","v":{"$error":"#REF!"}},{"$f":"IF(F277>#REF!,\"\",PMT(#REF!/12,#REF!,-#REF!))","v":{"$error":"#REF!"}},null,null,null,null,270,{"$f":"IF(N277>#REF!,\"\",$L$7)","v":{"$error":"#REF!"}},{"$f":"IF(N277>=#REF!,\"\",IF(N277<=#REF!,#REF!,#REF!))","v":{"$error":"#REF!"}},{"$f":"IF(N277>#REF!,\"\",#REF!)","v":{"$error":"#REF!"}},null,null,null,null,270,{"$f":"IF(V277>#REF!,\"\",$T$7)","v":{"$error":"#REF!"}},{"$f":"IF(V277>=#REF!,\"\",IF(V277<=#REF!,#REF!,#REF!))","v":{"$error":"#REF!"}},{"$f":"IF(V277>#REF!,\"\",#REF!)","v":{"$error":"#REF!"}},null,null,null,null,null,null,null,270]
[271,{"$f":"IF(A278>=#REF!,\"\",IF(A278<=#REF!,#REF!,#REF!))","v":{"$error":"#REF!"}},{"$f":"IF(A278>=#REF!,\"\",IF(A278<=#REF!,#REF!,#REF!))","v":{"$error":"#REF!"}},{"$f":"IF(A278>#REF!,\"\",#REF!)","v":{"$error":"#REF!"}},null,271,{"$f":"IF(F278>=#REF!,\"\",IF(F278<=#REF!,#REF!,#REF!))","v":{"$error":"#REF!"}},{"$f":"IF(F278>=#REF!,\"\",IF(F278<=#REF!,#REF!,#REF!))","v":{"$error":"#REF!"}},{"$f":"IF(F278>#REF!,\"\",PMT(#REF!/12,#REF!,-#REF!))","v":{"$error":"#REF!"}},null,null,null,null,271,{"$f":"IF(N278>#REF!,\"\",$L$7)","v":{"$error":"#REF!"}},{"$f":"IF(N278>=#REF!,\"\",IF(N278<=#REF!,#REF!,#REF!))","v":{"$error":"#REF!"}},{"$f":"IF(N278>#REF!,\"\",#REF!)","v":{"$error":"#REF!"}},null,null,null,null,271,{"$f":"IF(V278>#REF!,\"\",$T$7)","v":{"$error":"#REF!"}},{"$f":"IF(V278>=#REF!,\"\",IF(V278<=#REF!,#REF!,#REF!))","v":{"$error":"#REF!"}},{"$f":"IF(V278>#REF!,\"\",#REF!)","v":{"$error":"#REF!"}},null,null,null,null,null,null,null,271]
[272,{"$f":"IF(A279>=#REF!,\"\",IF(A279<=#REF!,#REF!,#REF!))","v":{"$error":"#REF!"}},{"$f":"IF(A279>=#REF!,\"\",IF(A279<=#REF!,#REF!,#REF!))","v":{"$error":"#REF!"}},{"$f":"IF(A279>#REF!,\"\",#REF!)","v":{"$error":"#REF!"}},null,272,{"$f":"IF(F279>=#REF!,\"\",IF(F279<=#REF!,#REF!,#REF!))","v":{"$error":"#REF!"}},{"$f":"IF(F279>=#REF!,\"\",IF(F279<=#REF!,#REF!,#REF!))","v":{"$error":"#REF!"}},{"$f":"IF(F279>#REF!,\"\",PMT(#REF!/12,#REF!,-#REF!))","v":{"$error":"#REF!"}},null,null,null,null,272,{"$f":"IF(N279>#REF!,\"\",$L$7)","v":{"$error":"#REF!"}},{"$f":"IF(N279>=#REF!,\"\",IF(N279<=#REF!,#REF!,#REF!))","v":{"$error":"#REF!"}},{"$f":"IF(N279>#REF!,\"\",#REF!)","v":{"$error":"#REF!"}},null,null,null,null,272,{"$f":"IF(V279>#REF!,\"\",$T$7)","v":{"$error":"#REF!"}},{"$f":"IF(V279>=#REF!,\"\",IF(V279<=#REF!,#REF!,#REF!))","v":{"$error":"#REF!"}},{"$f":"IF(V279>#REF!,\"\",#REF!)","v":{"$error":"#REF!"}},null,null,null,null,null,null,null,272]
[273,{"$f":"IF(A280>=#REF!,\"\",IF(A280<=#REF!,#REF!,#REF!))","v":{"$error":"#REF!"}},{"$f":"IF(A280>=#REF!,\"\",IF(A280<=#REF!,#REF!,#REF!))","v":{"$error":"#REF!"}},{"$f":"IF(A280>#REF!,\"\",#REF!)","v":{"$error":"#REF!"}},null,273,{"$f":"IF(F280>=#REF!,\"\",IF(F280<=#REF!,#REF!,#REF!))","v":{"$error":"#REF!"}},{"$f":"IF(F280>=#REF!,\"\",IF(F280<=#REF!,#REF!,#REF!))","v":{"$error":"#REF!"}},{"$f":"IF(F280>#REF!,\"\",PMT(#REF!/12,#REF!,-#REF!))","v":{"$error":"#REF!"}},null,null,null,null,273,{"$f":"IF(N280>#REF!,\"\",$L$7)","v":{"$error":"#REF!"}},{"$f":"IF(N280>=#REF!,\"\",IF(N280<=#REF!,#REF!,#REF!))","v":{"$error":"#REF!"}},{"$f":"IF(N280>#REF!,\"\",#REF!)","v":{"$error":"#REF!"}},null,null,null,null,273,{"$f":"IF(V280>#REF!,\"\",$T$7)","v":{"$error":"#REF!"}},{"$f":"IF(V280>=#REF!,\"\",IF(V280<=#REF!,#REF!,#REF!))","v":{"$error":"#REF!"}},{"$f":"IF(V280>#REF!,\"\",#REF!)","v":{"$error":"#REF!"}},null,null,null,null,null,null,null,273]
[274,{"$f":"IF(A281>=#REF!,\"\",IF(A281<=#REF!,#REF!,#REF!))","v":{"$error":"#REF!"}},{"$f":"IF(A281>=#REF!,\"\",IF(A281<=#REF!,#REF!,#REF!))","v":{"$error":"#REF!"}},{"$f":"IF(A281>#REF!,\"\",#REF!)","v":{"$error":"#REF!"}},null,274,{"$f":"IF(F281>=#REF!,\"\",IF(F281<=#REF!,#REF!,#REF!))","v":{"$error":"#REF!"}},{"$f":"IF(F281>=#REF!,\"\",IF(F281<=#REF!,#REF!,#REF!))","v":{"$error":"#REF!"}},{"$f":"IF(F281>#REF!,\"\",PMT(#REF!/12,#REF!,-#REF!))","v":{"$error":"#REF!"}},null,null,null,null,274,{"$f":"IF(N281>#REF!,\"\",$L$7)","v":{"$error":"#REF!"}},{"$f":"IF(N281>=#REF!,\"\",IF(N281<=#REF!,#REF!,#REF!))","v":{"$error":"#REF!"}},{"$f":"IF(N281>#REF!,\"\",#REF!)","v":{"$error":"#REF!"}},null,null,null,null,274,{"$f":"IF(V281>#REF!,\"\",$T$7)","v":{"$error":"#REF!"}},{"$f":"IF(V281>=#REF!,\"\",IF(V281<=#REF!,#REF!,#REF!))","v":{"$error":"#REF!"}},{"$f":"IF(V281>#REF!,\"\",#REF!)","v":{"$error":"#REF!"}},null,null,null,null,null,null,null,274]
[275,{"$f":"IF(A282>=#REF!,\"\",IF(A282<=#REF!,#REF!,#REF!))","v":{"$error":"#REF!"}},{"$f":"IF(A282>=#REF!,\"\",IF(A282<=#REF!,#REF!,#REF!))","v":{"$error":"#REF!"}},{"$f":"IF(A282>#REF!,\"\",#REF!)","v":{"$error":"#REF!"}},null,275,{"$f":"IF(F282>=#REF!,\"\",IF(F282<=#REF!,#REF!,#REF!))","v":{"$error":"#REF!"}},{"$f":"IF(F282>=#REF!,\"\",IF(F282<=#REF!,#REF!,#REF!))","v":{"$error":"#REF!"}},{"$f":"IF(F282>#REF!,\"\",PMT(#REF!/12,#REF!,-#REF!))","v":{"$error":"#REF!"}},null,null,null,null,275,{"$f":"IF(N282>#REF!,\"\",$L$7)","v":{"$error":"#REF!"}},{"$f":"IF(N282>=#REF!,\"\",IF(N282<=#REF!,#REF!,#REF!))","v":{"$error":"#REF!"}},{"$f":"IF(N282>#REF!,\"\",#REF!)","v":{"$error":"#REF!"}},null,null,null,null,275,{"$f":"IF(V282>#REF!,\"\",$T$7)","v":{"$error":"#REF!"}},{"$f":"IF(V282>=#REF!,\"\",IF(V282<=#REF!,#REF!,#REF!))","v":{"$error":"#REF!"}},{"$f":"IF(V282>#REF!,\"\",#REF!)","v":{"$error":"#REF!"}},null,null,null,null,null,null,null,275]
[276,{"$f":"IF(A283>=#REF!,\"\",IF(A283<=#REF!,#REF!,#REF!))","v":{"$error":"#REF!"}},{"$f":"IF(A283>=#REF!,\"\",IF(A283<=#REF!,#REF!,#REF!))","v":{"$error":"#REF!"}},{"$f":"IF(A283>#REF!,\"\",#REF!)","v":{"$error":"#REF!"}},null,276,{"$f":"IF(F283>=#REF!,\"\",IF(F283<=#REF!,#REF!,#REF!))","v":{"$error":"#REF!"}},{"$f":"IF(F283>=#REF!,\"\",IF(F283<=#REF!,#REF!,#REF!))","v":{"$error":"#REF!"}},{"$f":"IF(F283>#REF!,\"\",PMT(#REF!/12,#REF!,-#REF!))","v":{"$error":"#REF!"}},null,null,null,null,276,{"$f":"IF(N283>#REF!,\"\",$L$7)","v":{"$error":"#REF!"}},{"$f":"IF(N283>=#REF!,\"\",IF(N283<=#REF!,#REF!,#REF!))","v":{"$error":"#REF!"}},{"$f":"IF(N283>#REF!,\"\",#REF!)","v":{"$error":"#REF!"}},null,null,null,null,276,{"$f":"IF(V283>#REF!,\"\",$T$7)","v":{"$error":"#REF!"}},{"$f":"IF(V283>=#REF!,\"\",IF(V283<=#REF!,#REF!,#REF!))","v":{"$error":"#REF!"}},{"$f":"IF(V283>#REF!,\"\",#REF!)","v":{"$error":"#REF!"}},null,null,null,null,null,null,null,276]
[277,{"$f":"IF(A284>=#REF!,\"\",IF(A284<=#REF!,#REF!,#REF!))","v":{"$error":"#REF!"}},{"$f":"IF(A284>=#REF!,\"\",IF(A284<=#REF!,#REF!,#REF!))","v":{"$error":"#REF!"}},{"$f":"IF(A284>#REF!,\"\",#REF!)","v":{"$error":"#REF!"}},null,277,{"$f":"IF(F284>=#REF!,\"\",IF(F284<=#REF!,#REF!,#REF!))","v":{"$error":"#REF!"}},{"$f":"IF(F284>=#REF!,\"\",IF(F284<=#REF!,#REF!,#REF!))","v":{"$error":"#REF!"}},{"$f":"IF(F284>#REF!,\"\",PMT(#REF!/12,#REF!,-#REF!))","v":{"$error":"#REF!"}},null,null,null,null,277,{"$f":"IF(N284>#REF!,\"\",$L$7)","v":{"$error":"#REF!"}},{"$f":"IF(N284>=#REF!,\"\",IF(N284<=#REF!,#REF!,#REF!))","v":{"$error":"#REF!"}},{"$f":"IF(N284>#REF!,\"\",#REF!)","v":{"$error":"#REF!"}},null,null,null,null,277,{"$f":"IF(V284>#REF!,\"\",$T$7)","v":{"$error":"#REF!"}},{"$f":"IF(V284>=#REF!,\"\",IF(V284<=#REF!,#REF!,#REF!))","v":{"$error":"#REF!"}},{"$f":"IF(V284>#REF!,\"\",#REF!)","v":{"$error":"#REF!"}},null,null,null,null,null,null,null,277]
[278,{"$f":"IF(A285>=#REF!,\"\",IF(A285<=#REF!,#REF!,#REF!))","v":{"$error":"#REF!"}},{"$f":"IF(A285>=#REF!,\"\",IF(A285<=#REF!,#REF!,#REF!))","v":{"$error":"#REF!"}},{"$f":"IF(A285>#REF!,\"\",#REF!)","v":{"$error":"#REF!"}},null,278,{"$f":"IF(F285>=#REF!,\"\",IF(F285<=#REF!,#REF!,#REF!))","v":{"$error":"#REF!"}},{"$f":"IF(F285>=#REF!,\"\",IF(F285<=#REF!,#REF!,#REF!))","v":{"$error":"#REF!"}},{"$f":"IF(F285>#REF!,\"\",PMT(#REF!/12,#REF!,-#REF!))","v":{"$error":"#REF!"}},null,null,null,null,278,{"$f":"IF(N285>#REF!,\"\",$L$7)","v":{"$error":"#REF!"}},{"$f":"IF(N285>=#REF!,\"\",IF(N285<=#REF!,#REF!,#REF!))","v":{"$error":"#REF!"}},{"$f":"IF(N285>#REF!,\"\",#REF!)","v":{"$error":"#REF!"}},null,null,null,null,278,{"$f":"IF(V285>#REF!,\"\",$T$7)","v":{"$error":"#REF!"}},{"$f":"IF(V285>=#REF!,\"\",IF(V285<=#REF!,#REF!,#REF!))","v":{"$error":"#REF!"}},{"$f":"IF(V285>#REF!,\"\",#REF!)","v":{"$error":"#REF!"}},null,null,null,null,null,null,null,278]
[279,{"$f":"IF(A286>=#REF!,\"\",IF(A286<=#REF!,#REF!,#REF!))","v":{"$error":"#REF!"}},{"$f":"IF(A286>=#REF!,\"\",IF(A286<=#REF!,#REF!,#REF!))","v":{"$error":"#REF!"}},{"$f":"IF(A286>#REF!,\"\",#REF!)","v":{"$error":"#REF!"}},null,279,{"$f":"IF(F286>=#REF!,\"\",IF(F286<=#REF!,#REF!,#REF!))","v":{"$error":"#REF!"}},{"$f":"IF(F286>=#REF!,\"\",IF(F286<=#REF!,#REF!,#REF!))","v":{"$error":"#REF!"}},{"$f":"IF(F286>#REF!,\"\",PMT(#REF!/12,#REF!,-#REF!))","v":{"$error":"#REF!"}},null,null,null,null,279,{"$f":"IF(N286>#REF!,\"\",$L$7)","v":{"$error":"#REF!"}},{"$f":"IF(N286>=#REF!,\"\",IF(N286<=#REF!,#REF!,#REF!))","v":{"$error":"#REF!"}},{"$f":"IF(N286>#REF!,\"\",#REF!)","v":{"$error":"#REF!"}},null,null,null,null,279,{"$f":"IF(V286>#REF!,\"\",$T$7)","v":{"$error":"#REF!"}},{"$f":"IF(V286>=#REF!,\"\",IF(V286<=#REF!,#REF!,#REF!))","v":{"$error":"#REF!"}},{"$f":"IF(V286>#REF!,\"\",#REF!)","v":{"$error":"#REF!"}},null,null,null,null,null,null,null,279]
[280,{"$f":"IF(A287>=#REF!,\"\",IF(A287<=#REF!,#REF!,#REF!))","v":{"$error":"#REF!"}},{"$f":"IF(A287>=#REF!,\"\",IF(A287<=#REF!,#REF!,#REF!))","v":{"$error":"#REF!"}},{"$f":"IF(A287>#REF!,\"\",#REF!)","v":{"$error":"#REF!"}},null,280,{"$f":"IF(F287>=#REF!,\"\",IF(F287<=#REF!,#REF!,#REF!))","v":{"$error":"#REF!"}},{"$f":"IF(F287>=#REF!,\"\",IF(F287<=#REF!,#REF!,#REF!))","v":{"$error":"#REF!"}},{"$f":"IF(F287>#REF!,\"\",PMT(#REF!/12,#REF!,-#REF!))","v":{"$error":"#REF!"}},null,null,null,null,280,{"$f":"IF(N287>#REF!,\"\",$L$7)","v":{"$error":"#REF!"}},{"$f":"IF(N287>=#REF!,\"\",IF(N287<=#REF!,#REF!,#REF!))","v":{"$error":"#REF!"}},{"$f":"IF(N287>#REF!,\"\",#REF!)","v":{"$error":"#REF!"}},null,null,null,null,280,{"$f":"IF(V287>#REF!,\"\",$T$7)","v":{"$error":"#REF!"}},{"$f":"IF(V287>=#REF!,\"\",IF(V287<=#REF!,#REF!,#REF!))","v":{"$error":"#REF!"}},{"$f":"IF(V287>#REF!,\"\",#REF!)","v":{"$error":"#REF!"}},null,null,null,null,null,null,null,280]
[281,{"$f":"IF(A288>=#REF!,\"\",IF(A288<=#REF!,#REF!,#REF!))","v":{"$error":"#REF!"}},{"$f":"IF(A288>=#REF!,\"\",IF(A288<=#REF!,#REF!,#REF!))","v":{"$error":"#REF!"}},{"$f":"IF(A288>#REF!,\"\",#REF!)","v":{"$error":"#REF!"}},null,281,{"$f":"IF(F288>=#REF!,\"\",IF(F288<=#REF!,#REF!,#REF!))","v":{"$error":"#REF!"}},{"$f":"IF(F288>=#REF!,\"\",IF(F288<=#REF!,#REF!,#REF!))","v":{"$error":"#REF!"}},{"$f":"IF(F288>#REF!,\"\",PMT(#REF!/12,#REF!,-#REF!))","v":{"$error":"#REF!"}},null,null,null,null,281,{"$f":"IF(N288>#REF!,\"\",$L$7)","v":{"$error":"#REF!"}},{"$f":"IF(N288>=#REF!,\"\",IF(N288<=#REF!,#REF!,#REF!))","v":{"$error":"#REF!"}},{"$f":"IF(N288>#REF!,\"\",#REF!)","v":{"$error":"#REF!"}},null,null,null,null,281,{"$f":"IF(V288>#REF!,\"\",$T$7)","v":{"$error":"#REF!"}},{"$f":"IF(V288>=#REF!,\"\",IF(V288<=#REF!,#REF!,#REF!))","v":{"$error":"#REF!"}},{"$f":"IF(V288>#REF!,\"\",#REF!)","v":{"$error":"#REF!"}},null,null,null,null,null,null,null,281]
[282,{"$f":"IF(A289>=#REF!,\"\",IF(A289<=#REF!,#REF!,#REF!))","v":{"$error":"#REF!"}},{"$f":"IF(A289>=#REF!,\"\",IF(A289<=#REF!,#REF!,#REF!))","v":{"$error":"#REF!"}},{"$f":"IF(A289>#REF!,\"\",#REF!)","v":{"$error":"#REF!"}},null,282,{"$f":"IF(F289>=#REF!,\"\",IF(F289<=#REF!,#REF!,#REF!))","v":{"$error":"#REF!"}},{"$f":"IF(F289>=#REF!,\"\",IF(F289<=#REF!,#REF!,#REF!))","v":{"$error":"#REF!"}},{"$f":"IF(F289>#REF!,\"\",PMT(#REF!/12,#REF!,-#REF!))","v":{"$error":"#REF!"}},null,null,null,null,282,{"$f":"IF(N289>#REF!,\"\",$L$7)","v":{"$error":"#REF!"}},{"$f":"IF(N289>=#REF!,\"\",IF(N289<=#REF!,#REF!,#REF!))","v":{"$error":"#REF!"}},{"$f":"IF(N289>#REF!,\"\",#REF!)","v":{"$error":"#REF!"}},null,null,null,null,282,{"$f":"IF(V289>#REF!,\"\",$T$7)","v":{"$error":"#REF!"}},{"$f":"IF(V289>=#REF!,\"\",IF(V289<=#REF!,#REF!,#REF!))","v":{"$error":"#REF!"}},{"$f":"IF(V289>#REF!,\"\",#REF!)","v":{"$error":"#REF!"}},null,null,null,null,null,null,null,282]
[283,{"$f":"IF(A290>=#REF!,\"\",IF(A290<=#REF!,#REF!,#REF!))","v":{"$error":"#REF!"}},{"$f":"IF(A290>=#REF!,\"\",IF(A290<=#REF!,#REF!,#REF!))","v":{"$error":"#REF!"}},{"$f":"IF(A290>#REF!,\"\",#REF!)","v":{"$error":"#REF!"}},null,283,{"$f":"IF(F290>=#REF!,\"\",IF(F290<=#REF!,#REF!,#REF!))","v":{"$error":"#REF!"}},{"$f":"IF(F290>=#REF!,\"\",IF(F290<=#REF!,#REF!,#REF!))","v":{"$error":"#REF!"}},{"$f":"IF(F290>#REF!,\"\",PMT(#REF!/12,#REF!,-#REF!))","v":{"$error":"#REF!"}},null,null,null,null,283,{"$f":"IF(N290>#REF!,\"\",$L$7)","v":{"$error":"#REF!"}},{"$f":"IF(N290>=#REF!,\"\",IF(N290<=#REF!,#REF!,#REF!))","v":{"$error":"#REF!"}},{"$f":"IF(N290>#REF!,\"\",#REF!)","v":{"$error":"#REF!"}},null,null,null,null,283,{"$f":"IF(V290>#REF!,\"\",$T$7)","v":{"$error":"#REF!"}},{"$f":"IF(V290>=#REF!,\"\",IF(V290<=#REF!,#REF!,#REF!))","v":{"$error":"#REF!"}},{"$f":"IF(V290>#REF!,\"\",#REF!)","v":{"$error":"#REF!"}},null,null,null,null,null,null,null,283]
[284,{"$f":"IF(A291>=#REF!,\"\",IF(A291<=#REF!,#REF!,#REF!))","v":{"$error":"#REF!"}},{"$f":"IF(A291>=#REF!,\"\",IF(A291<=#REF!,#REF!,#REF!))","v":{"$error":"#REF!"}},{"$f":"IF(A291>#REF!,\"\",#REF!)","v":{"$error":"#REF!"}},null,284,{"$f":"IF(F291>=#REF!,\"\",IF(F291<=#REF!,#REF!,#REF!))","v":{"$error":"#REF!"}},{"$f":"IF(F291>=#REF!,\"\",IF(F291<=#REF!,#REF!,#REF!))","v":{"$error":"#REF!"}},{"$f":"IF(F291>#REF!,\"\",PMT(#REF!/12,#REF!,-#REF!))","v":{"$error":"#REF!"}},null,null,null,null,284,{"$f":"IF(N291>#REF!,\"\",$L$7)","v":{"$error":"#REF!"}},{"$f":"IF(N291>=#REF!,\"\",IF(N291<=#REF!,#REF!,#REF!))","v":{"$error":"#REF!"}},{"$f":"IF(N291>#REF!,\"\",#REF!)","v":{"$error":"#REF!"}},null,null,null,null,284,{"$f":"IF(V291>#REF!,\"\",$T$7)","v":{"$error":"#REF!"}},{"$f":"IF(V291>=#REF!,\"\",IF(V291<=#REF!,#REF!,#REF!))","v":{"$error":"#REF!"}},{"$f":"IF(V291>#REF!,\"\",#REF!)","v":{"$error":"#REF!"}},null,null,null,null,null,null,null,284]
[285,{"$f":"IF(A292>=#REF!,\"\",IF(A292<=#REF!,#REF!,#REF!))","v":{"$error":"#REF!"}},{"$f":"IF(A292>=#REF!,\"\",IF(A292<=#REF!,#REF!,#REF!))","v":{"$error":"#REF!"}},{"$f":"IF(A292>#REF!,\"\",#REF!)","v":{"$error":"#REF!"}},null,285,{"$f":"IF(F292>=#REF!,\"\",IF(F292<=#REF!,#REF!,#REF!))","v":{"$error":"#REF!"}},{"$f":"IF(F292>=#REF!,\"\",IF(F292<=#REF!,#REF!,#REF!))","v":{"$error":"#REF!"}},{"$f":"IF(F292>#REF!,\"\",PMT(#REF!/12,#REF!,-#REF!))","v":{"$error":"#REF!"}},null,null,null,null,285,{"$f":"IF(N292>#REF!,\"\",$L$7)","v":{"$error":"#REF!"}},{"$f":"IF(N292>=#REF!,\"\",IF(N292<=#REF!,#REF!,#REF!))","v":{"$error":"#REF!"}},{"$f":"IF(N292>#REF!,\"\",#REF!)","v":{"$error":"#REF!"}},null,null,null,null,285,{"$f":"IF(V292>#REF!,\"\",$T$7)","v":{"$error":"#REF!"}},{"$f":"IF(V292>=#REF!,\"\",IF(V292<=#REF!,#REF!,#REF!))","v":{"$error":"#REF!"}},{"$f":"IF(V292>#REF!,\"\",#REF!)","v":{"$error":"#REF!"}},null,null,null,null,null,null,null,285]
[286,{"$f":"IF(A293>=#REF!,\"\",IF(A293<=#REF!,#REF!,#REF!))","v":{"$error":"#REF!"}},{"$f":"IF(A293>=#REF!,\"\",IF(A293<=#REF!,#REF!,#REF!))","v":{"$error":"#REF!"}},{"$f":"IF(A293>#REF!,\"\",#REF!)","v":{"$error":"#REF!"}},null,286,{"$f":"IF(F293>=#REF!,\"\",IF(F293<=#REF!,#REF!,#REF!))","v":{"$error":"#REF!"}},{"$f":"IF(F293>=#REF!,\"\",IF(F293<=#REF!,#REF!,#REF!))","v":{"$error":"#REF!"}},{"$f":"IF(F293>#REF!,\"\",PMT(#REF!/12,#REF!,-#REF!))","v":{"$error":"#REF!"}},null,null,null,null,286,{"$f":"IF(N293>#REF!,\"\",$L$7)","v":{"$error":"#REF!"}},{"$f":"IF(N293>=#REF!,\"\",IF(N293<=#REF!,#REF!,#REF!))","v":{"$error":"#REF!"}},{"$f":"IF(N293>#REF!,\"\",#REF!)","v":{"$error":"#REF!"}},null,null,null,null,286,{"$f":"IF(V293>#REF!,\"\",$T$7)","v":{"$error":"#REF!"}},{"$f":"IF(V293>=#REF!,\"\",IF(V293<=#REF!,#REF!,#REF!))","v":{"$error":"#REF!"}},{"$f":"IF(V293>#REF!,\"\",#REF!)","v":{"$error":"#REF!"}},null,null,null,null,null,null,null,286]
[287,{"$f":"IF(A294>=#REF!,\"\",IF(A294<=#REF!,#REF!,#REF!))","v":{"$error":"#REF!"}},{"$f":"IF(A294>=#REF!,\"\",IF(A294<=#REF!,#REF!,#REF!))","v":{"$error":"#REF!"}},{"$f":"IF(A294>#REF!,\"\",#REF!)","v":{"$error":"#REF!"}},null,287,{"$f":"IF(F294>=#REF!,\"\",IF(F294<=#REF!,#REF!,#REF!))","v":{"$error":"#REF!"}},{"$f":"IF(F294>=#REF!,\"\",IF(F294<=#REF!,#REF!,#REF!))","v":{"$error":"#REF!"}},{"$f":"IF(F294>#REF!,\"\",PMT(#REF!/12,#REF!,-#REF!))","v":{"$error":"#REF!"}},null,null,null,null,287,{"$f":"IF(N294>#REF!,\"\",$L$7)","v":{"$error":"#REF!"}},{"$f":"IF(N294>=#REF!,\"\",IF(N294<=#REF!,#REF!,#REF!))","v":{"$error":"#REF!"}},{"$f":"IF(N294>#REF!,\"\",#REF!)","v":{"$error":"#REF!"}},null,null,null,null,287,{"$f":"IF(V294>#REF!,\"\",$T$7)","v":{"$error":"#REF!"}},{"$f":"IF(V294>=#REF!,\"\",IF(V294<=#REF!,#REF!,#REF!))","v":{"$error":"#REF!"}},{"$f":"IF(V294>#REF!,\"\",#REF!)","v":{"$error":"#REF!"}},null,null,null,null,null,null,null,287]
[288,{"$f":"IF(A295>=#REF!,\"\",IF(A295<=#REF!,#REF!,#REF!))","v":{"$error":"#REF!"}},{"$f":"IF(A295>=#REF!,\"\",IF(A295<=#REF!,#REF!,#REF!))","v":{"$error":"#REF!"}},{"$f":"IF(A295>#REF!,\"\",#REF!)","v":{"$error":"#REF!"}},null,288,{"$f":"IF(F295>=#REF!,\"\",IF(F295<=#REF!,#REF!,#REF!))","v":{"$error":"#REF!"}},{"$f":"IF(F295>=#REF!,\"\",IF(F295<=#REF!,#REF!,#REF!))","v":{"$error":"#REF!"}},{"$f":"IF(F295>#REF!,\"\",PMT(#REF!/12,#REF!,-#REF!))","v":{"$error":"#REF!"}},null,null,null,null,288,{"$f":"IF(N295>#REF!,\"\",$L$7)","v":{"$error":"#REF!"}},{"$f":"IF(N295>=#REF!,\"\",IF(N295<=#REF!,#REF!,#REF!))","v":{"$error":"#REF!"}},{"$f":"IF(N295>#REF!,\"\",#REF!)","v":{"$error":"#REF!"}},null,null,null,null,288,{"$f":"IF(V295>#REF!,\"\",$T$7)","v":{"$error":"#REF!"}},{"$f":"IF(V295>=#REF!,\"\",IF(V295<=#REF!,#REF!,#REF!))","v":{"$error":"#REF!"}},{"$f":"IF(V295>#REF!,\"\",#REF!)","v":{"$error":"#REF!"}},null,null,null,null,null,null,null,288]
[289,{"$f":"IF(A296>=#REF!,\"\",IF(A296<=#REF!,#REF!,#REF!))","v":{"$error":"#REF!"}},{"$f":"IF(A296>=#REF!,\"\",IF(A296<=#REF!,#REF!,#REF!))","v":{"$error":"#REF!"}},{"$f":"IF(A296>#REF!,\"\",#REF!)","v":{"$error":"#REF!"}},null,289,{"$f":"IF(F296>=#REF!,\"\",IF(F296<=#REF!,#REF!,#REF!))","v":{"$error":"#REF!"}},{"$f":"IF(F296>=#REF!,\"\",IF(F296<=#REF!,#REF!,#REF!))","v":{"$error":"#REF!"}},{"$f":"IF(F296>#REF!,\"\",PMT(#REF!/12,#REF!,-#REF!))","v":{"$error":"#REF!"}},null,null,null,null,289,{"$f":"IF(N296>#REF!,\"\",$L$7)","v":{"$error":"#REF!"}},{"$f":"IF(N296>=#REF!,\"\",IF(N296<=#REF!,#REF!,#REF!))","v":{"$error":"#REF!"}},{"$f":"IF(N296>#REF!,\"\",#REF!)","v":{"$error":"#REF!"}},null,null,null,null,289,{"$f":"IF(V296>#REF!,\"\",$T$7)","v":{"$error":"#REF!"}},{"$f":"IF(V296>=#REF!,\"\",IF(V296<=#REF!,#REF!,#REF!))","v":{"$error":"#REF!"}},{"$f":"IF(V296>#REF!,\"\",#REF!)","v":{"$error":"#REF!"}},null,null,null,null,null,null,null,289]
[290,{"$f":"IF(A297>=#REF!,\"\",IF(A297<=#REF!,#REF!,#REF!))","v":{"$error":"#REF!"}},{"$f":"IF(A297>=#REF!,\"\",IF(A297<=#REF!,#REF!,#REF!))","v":{"$error":"#REF!"}},{"$f":"IF(A297>#REF!,\"\",#REF!)","v":{"$error":"#REF!"}},null,290,{"$f":"IF(F297>=#REF!,\"\",IF(F297<=#REF!,#REF!,#REF!))","v":{"$error":"#REF!"}},{"$f":"IF(F297>=#REF!,\"\",IF(F297<=#REF!,#REF!,#REF!))","v":{"$error":"#REF!"}},{"$f":"IF(F297>#REF!,\"\",PMT(#REF!/12,#REF!,-#REF!))","v":{"$error":"#REF!"}},null,null,null,null,290,{"$f":"IF(N297>#REF!,\"\",$L$7)","v":{"$error":"#REF!"}},{"$f":"IF(N297>=#REF!,\"\",IF(N297<=#REF!,#REF!,#REF!))","v":{"$error":"#REF!"}},{"$f":"IF(N297>#REF!,\"\",#REF!)","v":{"$error":"#REF!"}},null,null,null,null,290,{"$f":"IF(V297>#REF!,\"\",$T$7)","v":{"$error":"#REF!"}},{"$f":"IF(V297>=#REF!,\"\",IF(V297<=#REF!,#REF!,#REF!))","v":{"$error":"#REF!"}},{"$f":"IF(V297>#REF!,\"\",#REF!)","v":{"$error":"#REF!"}},null,null,null,null,null,null,null,290]
[291,{"$f":"IF(A298>=#REF!,\"\",IF(A298<=#REF!,#REF!,#REF!))","v":{"$error":"#REF!"}},{"$f":"IF(A298>=#REF!,\"\",IF(A298<=#REF!,#REF!,#REF!))","v":{"$error":"#REF!"}},{"$f":"IF(A298>#REF!,\"\",#REF!)","v":{"$error":"#REF!"}},null,291,{"$f":"IF(F298>=#REF!,\"\",IF(F298<=#REF!,#REF!,#REF!))","v":{"$error":"#REF!"}},{"$f":"IF(F298>=#REF!,\"\",IF(F298<=#REF!,#REF!,#REF!))","v":{"$error":"#REF!"}},{"$f":"IF(F298>#REF!,\"\",PMT(#REF!/12,#REF!,-#REF!))","v":{"$error":"#REF!"}},null,null,null,null,291,{"$f":"IF(N298>#REF!,\"\",$L$7)","v":{"$error":"#REF!"}},{"$f":"IF(N298>=#REF!,\"\",IF(N298<=#REF!,#REF!,#REF!))","v":{"$error":"#REF!"}},{"$f":"IF(N298>#REF!,\"\",#REF!)","v":{"$error":"#REF!"}},null,null,null,null,291,{"$f":"IF(V298>#REF!,\"\",$T$7)","v":{"$error":"#REF!"}},{"$f":"IF(V298>=#REF!,\"\",IF(V298<=#REF!,#REF!,#REF!))","v":{"$error":"#REF!"}},{"$f":"IF(V298>#REF!,\"\",#REF!)","v":{"$error":"#REF!"}},null,null,null,null,null,null,null,291]
[292,{"$f":"IF(A299>=#REF!,\"\",IF(A299<=#REF!,#REF!,#REF!))","v":{"$error":"#REF!"}},{"$f":"IF(A299>=#REF!,\"\",IF(A299<=#REF!,#REF!,#REF!))","v":{"$error":"#REF!"}},{"$f":"IF(A299>#REF!,\"\",#REF!)","v":{"$error":"#REF!"}},null,292,{"$f":"IF(F299>=#REF!,\"\",IF(F299<=#REF!,#REF!,#REF!))","v":{"$error":"#REF!"}},{"$f":"IF(F299>=#REF!,\"\",IF(F299<=#REF!,#REF!,#REF!))","v":{"$error":"#REF!"}},{"$f":"IF(F299>#REF!,\"\",PMT(#REF!/12,#REF!,-#REF!))","v":{"$error":"#REF!"}},null,null,null,null,292,{"$f":"IF(N299>#REF!,\"\",$L$7)","v":{"$error":"#REF!"}},{"$f":"IF(N299>=#REF!,\"\",IF(N299<=#REF!,#REF!,#REF!))","v":{"$error":"#REF!"}},{"$f":"IF(N299>#REF!,\"\",#REF!)","v":{"$error":"#REF!"}},null,null,null,null,292,{"$f":"IF(V299>#REF!,\"\",$T$7)","v":{"$error":"#REF!"}},{"$f":"IF(V299>=#REF!,\"\",IF(V299<=#REF!,#REF!,#REF!))","v":{"$error":"#REF!"}},{"$f":"IF(V299>#REF!,\"\",#REF!)","v":{"$error":"#REF!"}},null,null,null,null,null,null,null,292]
[293,{"$f":"IF(A300>=#REF!,\"\",IF(A300<=#REF!,#REF!,#REF!))","v":{"$error":"#REF!"}},{"$f":"IF(A300>=#REF!,\"\",IF(A300<=#REF!,#REF!,#REF!))","v":{"$error":"#REF!"}},{"$f":"IF(A300>#REF!,\"\",#REF!)","v":{"$error":"#REF!"}},null,293,{"$f":"IF(F300>=#REF!,\"\",IF(F300<=#REF!,#REF!,#REF!))","v":{"$error":"#REF!"}},{"$f":"IF(F300>=#REF!,\"\",IF(F300<=#REF!,#REF!,#REF!))","v":{"$error":"#REF!"}},{"$f":"IF(F300>#REF!,\"\",PMT(#REF!/12,#REF!,-#REF!))","v":{"$error":"#REF!"}},null,null,null,null,293,{"$f":"IF(N300>#REF!,\"\",$L$7)","v":{"$error":"#REF!"}},{"$f":"IF(N300>=#REF!,\"\",IF(N300<=#REF!,#REF!,#REF!))","v":{"$error":"#REF!"}},{"$f":"IF(N300>#REF!,\"\",#REF!)","v":{"$error":"#REF!"}},null,null,null,null,293,{"$f":"IF(V300>#REF!,\"\",$T$7)","v":{"$error":"#REF!"}},{"$f":"IF(V300>=#REF!,\"\",IF(V300<=#REF!,#REF!,#REF!))","v":{"$error":"#REF!"}},{"$f":"IF(V300>#REF!,\"\",#REF!)","v":{"$error":"#REF!"}},null,null,null,null,null,null,null,293]
[294,{"$f":"IF(A301>=#REF!,\"\",IF(A301<=#REF!,#REF!,#REF!))","v":{"$error":"#REF!"}},{"$f":"IF(A301>=#REF!,\"\",IF(A301<=#REF!,#REF!,#REF!))","v":{"$error":"#REF!"}},{"$f":"IF(A301>#REF!,\"\",#REF!)","v":{"$error":"#REF!"}},null,294,{"$f":"IF(F301>=#REF!,\"\",IF(F301<=#REF!,#REF!,#REF!))","v":{"$error":"#REF!"}},{"$f":"IF(F301>=#REF!,\"\",IF(F301<=#REF!,#REF!,#REF!))","v":{"$error":"#REF!"}},{"$f":"IF(F301>#REF!,\"\",PMT(#REF!/12,#REF!,-#REF!))","v":{"$error":"#REF!"}},null,null,null,null,294,{"$f":"IF(N301>#REF!,\"\",$L$7)","v":{"$error":"#REF!"}},{"$f":"IF(N301>=#REF!,\"\",IF(N301<=#REF!,#REF!,#REF!))","v":{"$error":"#REF!"}},{"$f":"IF(N301>#REF!,\"\",#REF!)","v":{"$error":"#REF!"}},null,null,null,null,294,{"$f":"IF(V301>#REF!,\"\",$T$7)","v":{"$error":"#REF!"}},{"$f":"IF(V301>=#REF!,\"\",IF(V301<=#REF!,#REF!,#REF!))","v":{"$error":"#REF!"}},{"$f":"IF(V301>#REF!,\"\",#REF!)","v":{"$error":"#REF!"}},null,null,null,null,null,null,null,294]
[295,{"$f":"IF(A302>=#REF!,\"\",IF(A302<=#REF!,#REF!,#REF!))","v":{"$error":"#REF!"}},{"$f":"IF(A302>=#REF!,\"\",IF(A302<=#REF!,#REF!,#REF!))","v":{"$error":"#REF!"}},{"$f":"IF(A302>#REF!,\"\",#REF!)","v":{"$error":"#REF!"}},null,295,{"$f":"IF(F302>=#REF!,\"\",IF(F302<=#REF!,#REF!,#REF!))","v":{"$error":"#REF!"}},{"$f":"IF(F302>=#REF!,\"\",IF(F302<=#REF!,#REF!,#REF!))","v":{"$error":"#REF!"}},{"$f":"IF(F302>#REF!,\"\",PMT(#REF!/12,#REF!,-#REF!))","v":{"$error":"#REF!"}},null,null,null,null,295,{"$f":"IF(N302>#REF!,\"\",$L$7)","v":{"$error":"#REF!"}},{"$f":"IF(N302>=#REF!,\"\",IF(N302<=#REF!,#REF!,#REF!))","v":{"$error":"#REF!"}},{"$f":"IF(N302>#REF!,\"\",#REF!)","v":{"$error":"#REF!"}},null,null,null,null,295,{"$f":"IF(V302>#REF!,\"\",$T$7)","v":{"$error":"#REF!"}},{"$f":"IF(V302>=#REF!,\"\",IF(V302<=#REF!,#REF!,#REF!))","v":{"$error":"#REF!"}},{"$f":"IF(V302>#REF!,\"\",#REF!)","v":{"$error":"#REF!"}},null,null,null,null,null,null,null,295]
[296,{"$f":"IF(A303>=#REF!,\"\",IF(A303<=#REF!,#REF!,#REF!))","v":{"$error":"#REF!"}},{"$f":"IF(A303>=#REF!,\"\",IF(A303<=#REF!,#REF!,#REF!))","v":{"$error":"#REF!"}},{"$f":"IF(A303>#REF!,\"\",#REF!)","v":{"$error":"#REF!"}},null,296,{"$f":"IF(F303>=#REF!,\"\",IF(F303<=#REF!,#REF!,#REF!))","v":{"$error":"#REF!"}},{"$f":"IF(F303>=#REF!,\"\",IF(F303<=#REF!,#REF!,#REF!))","v":{"$error":"#REF!"}},{"$f":"IF(F303>#REF!,\"\",PMT(#REF!/12,#REF!,-#REF!))","v":{"$error":"#REF!"}},null,null,null,null,296,{"$f":"IF(N303>#REF!,\"\",$L$7)","v":{"$error":"#REF!"}},{"$f":"IF(N303>=#REF!,\"\",IF(N303<=#REF!,#REF!,#REF!))","v":{"$error":"#REF!"}},{"$f":"IF(N303>#REF!,\"\",#REF!)","v":{"$error":"#REF!"}},null,null,null,null,296,{"$f":"IF(V303>#REF!,\"\",$T$7)","v":{"$error":"#REF!"}},{"$f":"IF(V303>=#REF!,\"\",IF(V303<=#REF!,#REF!,#REF!))","v":{"$error":"#REF!"}},{"$f":"IF(V303>#REF!,\"\",#REF!)","v":{"$error":"#REF!"}},null,null,null,null,null,null,null,296]
[297,{"$f":"IF(A304>=#REF!,\"\",IF(A304<=#REF!,#REF!,#REF!))","v":{"$error":"#REF!"}},{"$f":"IF(A304>=#REF!,\"\",IF(A304<=#REF!,#REF!,#REF!))","v":{"$error":"#REF!"}},{"$f":"IF(A304>#REF!,\"\",#REF!)","v":{"$error":"#REF!"}},null,297,{"$f":"IF(F304>=#REF!,\"\",IF(F304<=#REF!,#REF!,#REF!))","v":{"$error":"#REF!"}},{"$f":"IF(F304>=#REF!,\"\",IF(F304<=#REF!,#REF!,#REF!))","v":{"$error":"#REF!"}},{"$f":"IF(F304>#REF!,\"\",PMT(#REF!/12,#REF!,-#REF!))","v":{"$error":"#REF!"}},null,null,null,null,297,{"$f":"IF(N304>#REF!,\"\",$L$7)","v":{"$error":"#REF!"}},{"$f":"IF(N304>=#REF!,\"\",IF(N304<=#REF!,#REF!,#REF!))","v":{"$error":"#REF!"}},{"$f":"IF(N304>#REF!,\"\",#REF!)","v":{"$error":"#REF!"}},null,null,null,null,297,{"$f":"IF(V304>#REF!,\"\",$T$7)","v":{"$error":"#REF!"}},{"$f":"IF(V304>=#REF!,\"\",IF(V304<=#REF!,#REF!,#REF!))","v":{"$error":"#REF!"}},{"$f":"IF(V304>#REF!,\"\",#REF!)","v":{"$error":"#REF!"}},null,null,null,null,null,null,null,297]
[298,{"$f":"IF(A305>=#REF!,\"\",IF(A305<=#REF!,#REF!,#REF!))","v":{"$error":"#REF!"}},{"$f":"IF(A305>=#REF!,\"\",IF(A305<=#REF!,#REF!,#REF!))","v":{"$error":"#REF!"}},{"$f":"IF(A305>#REF!,\"\",#REF!)","v":{"$error":"#REF!"}},null,298,{"$f":"IF(F305>=#REF!,\"\",IF(F305<=#REF!,#REF!,#REF!))","v":{"$error":"#REF!"}},{"$f":"IF(F305>=#REF!,\"\",IF(F305<=#REF!,#REF!,#REF!))","v":{"$error":"#REF!"}},{"$f":"IF(F305>#REF!,\"\",PMT(#REF!/12,#REF!,-#REF!))","v":{"$error":"#REF!"}},null,null,null,null,298,{"$f":"IF(N305>#REF!,\"\",$L$7)","v":{"$error":"#REF!"}},{"$f":"IF(N305>=#REF!,\"\",IF(N305<=#REF!,#REF!,#REF!))","v":{"$error":"#REF!"}},{"$f":"IF(N305>#REF!,\"\",#REF!)","v":{"$error":"#REF!"}},null,null,null,null,298,{"$f":"IF(V305>#REF!,\"\",$T$7)","v":{"$error":"#REF!"}},{"$f":"IF(V305>=#REF!,\"\",IF(V305<=#REF!,#REF!,#REF!))","v":{"$error":"#REF!"}},{"$f":"IF(V305>#REF!,\"\",#REF!)","v":{"$error":"#REF!"}},null,null,null,null,null,null,null,298]
[299,{"$f":"IF(A306>=#REF!,\"\",IF(A306<=#REF!,#REF!,#REF!))","v":{"$error":"#REF!"}},{"$f":"IF(A306>=#REF!,\"\",IF(A306<=#REF!,#REF!,#REF!))","v":{"$error":"#REF!"}},{"$f":"IF(A306>#REF!,\"\",#REF!)","v":{"$error":"#REF!"}},null,299,{"$f":"IF(F306>=#REF!,\"\",IF(F306<=#REF!,#REF!,#REF!))","v":{"$error":"#REF!"}},{"$f":"IF(F306>=#REF!,\"\",IF(F306<=#REF!,#REF!,#REF!))","v":{"$error":"#REF!"}},{"$f":"IF(F306>#REF!,\"\",PMT(#REF!/12,#REF!,-#REF!))","v":{"$error":"#REF!"}},null,null,null,null,299,{"$f":"IF(N306>#REF!,\"\",$L$7)","v":{"$error":"#REF!"}},{"$f":"IF(N306>=#REF!,\"\",IF(N306<=#REF!,#REF!,#REF!))","v":{"$error":"#REF!"}},{"$f":"IF(N306>#REF!,\"\",#REF!)","v":{"$error":"#REF!"}},null,null,null,null,299,{"$f":"IF(V306>#REF!,\"\",$T$7)","v":{"$error":"#REF!"}},{"$f":"IF(V306>=#REF!,\"\",IF(V306<=#REF!,#REF!,#REF!))","v":{"$error":"#REF!"}},{"$f":"IF(V306>#REF!,\"\",#REF!)","v":{"$error":"#REF!"}},null,null,null,null,null,null,null,299]
[300,{"$f":"IF(A307>=#REF!,\"\",IF(A307<=#REF!,#REF!,#REF!))","v":{"$error":"#REF!"}},{"$f":"IF(A307>=#REF!,\"\",IF(A307<=#REF!,#REF!,#REF!))","v":{"$error":"#REF!"}},{"$f":"IF(A307>#REF!,\"\",#REF!)","v":{"$error":"#REF!"}},null,300,{"$f":"IF(F307>=#REF!,\"\",IF(F307<=#REF!,#REF!,#REF!))","v":{"$error":"#REF!"}},{"$f":"IF(F307>=#REF!,\"\",IF(F307<=#REF!,#REF!,#REF!))","v":{"$error":"#REF!"}},{"$f":"IF(F307>#REF!,\"\",PMT(#REF!/12,#REF!,-#REF!))","v":{"$error":"#REF!"}},null,null,null,null,300,{"$f":"IF(N307>#REF!,\"\",$L$7)","v":{"$error":"#REF!"}},{"$f":"IF(N307>=#REF!,\"\",IF(N307<=#REF!,#REF!,#REF!))","v":{"$error":"#REF!"}},{"$f":"IF(N307>#REF!,\"\",#REF!)","v":{"$error":"#REF!"}},null,null,null,null,300,{"$f":"IF(V307>#REF!,\"\",$T$7)","v":{"$error":"#REF!"}},{"$f":"IF(V307>=#REF!,\"\",IF(V307<=#REF!,#REF!,#REF!))","v":{"$error":"#REF!"}},{"$f":"IF(V307>#REF!,\"\",#REF!)","v":{"$error":"#REF!"}},null,null,null,null,null,null,null,300]
[301,{"$f":"IF(A308>=#REF!,\"\",IF(A308<=#REF!,#REF!,#REF!))","v":{"$error":"#REF!"}},{"$f":"IF(A308>=#REF!,\"\",IF(A308<=#REF!,#REF!,#REF!))","v":{"$error":"#REF!"}},{"$f":"IF(A308>#REF!,\"\",#REF!)","v":{"$error":"#REF!"}},null,301,{"$f":"IF(F308>=#REF!,\"\",IF(F308<=#REF!,#REF!,#REF!))","v":{"$error":"#REF!"}},{"$f":"IF(F308>=#REF!,\"\",IF(F308<=#REF!,#REF!,#REF!))","v":{"$error":"#REF!"}},{"$f":"IF(F308>#REF!,\"\",PMT(#REF!/12,#REF!,-#REF!))","v":{"$error":"#REF!"}},null,null,null,null,301,{"$f":"IF(N308>#REF!,\"\",$L$7)","v":{"$error":"#REF!"}},{"$f":"IF(N308>=#REF!,\"\",IF(N308<=#REF!,#REF!,#REF!))","v":{"$error":"#REF!"}},{"$f":"IF(N308>#REF!,\"\",#REF!)","v":{"$error":"#REF!"}},null,null,null,null,301,{"$f":"IF(V308>#REF!,\"\",$T$7)","v":{"$error":"#REF!"}},{"$f":"IF(V308>=#REF!,\"\",IF(V308<=#REF!,#REF!,#REF!))","v":{"$error":"#REF!"}},{"$f":"IF(V308>#REF!,\"\",#REF!)","v":{"$error":"#REF!"}},null,null,null,null,null,null,null,301]
[302,{"$f":"IF(A309>=#REF!,\"\",IF(A309<=#REF!,#REF!,#REF!))","v":{"$error":"#REF!"}},{"$f":"IF(A309>=#REF!,\"\",IF(A309<=#REF!,#REF!,#REF!))","v":{"$error":"#REF!"}},{"$f":"IF(A309>#REF!,\"\",#REF!)","v":{"$error":"#REF!"}},null,302,{"$f":"IF(F309>=#REF!,\"\",IF(F309<=#REF!,#REF!,#REF!))","v":{"$error":"#REF!"}},{"$f":"IF(F309>=#REF!,\"\",IF(F309<=#REF!,#REF!,#REF!))","v":{"$error":"#REF!"}},{"$f":"IF(F309>#REF!,\"\",PMT(#REF!/12,#REF!,-#REF!))","v":{"$error":"#REF!"}},null,null,null,null,302,{"$f":"IF(N309>#REF!,\"\",$L$7)","v":{"$error":"#REF!"}},{"$f":"IF(N309>=#REF!,\"\",IF(N309<=#REF!,#REF!,#REF!))","v":{"$error":"#REF!"}},{"$f":"IF(N309>#REF!,\"\",#REF!)","v":{"$error":"#REF!"}},null,null,null,null,302,{"$f":"IF(V309>#REF!,\"\",$T$7)","v":{"$error":"#REF!"}},{"$f":"IF(V309>=#REF!,\"\",IF(V309<=#REF!,#REF!,#REF!))","v":{"$error":"#REF!"}},{"$f":"IF(V309>#REF!,\"\",#REF!)","v":{"$error":"#REF!"}},null,null,null,null,null,null,null,302]
[303,{"$f":"IF(A310>=#REF!,\"\",IF(A310<=#REF!,#REF!,#REF!))","v":{"$error":"#REF!"}},{"$f":"IF(A310>=#REF!,\"\",IF(A310<=#REF!,#REF!,#REF!))","v":{"$error":"#REF!"}},{"$f":"IF(A310>#REF!,\"\",#REF!)","v":{"$error":"#REF!"}},null,303,{"$f":"IF(F310>=#REF!,\"\",IF(F310<=#REF!,#REF!,#REF!))","v":{"$error":"#REF!"}},{"$f":"IF(F310>=#REF!,\"\",IF(F310<=#REF!,#REF!,#REF!))","v":{"$error":"#REF!"}},{"$f":"IF(F310>#REF!,\"\",PMT(#REF!/12,#REF!,-#REF!))","v":{"$error":"#REF!"}},null,null,null,null,303,{"$f":"IF(N310>#REF!,\"\",$L$7)","v":{"$error":"#REF!"}},{"$f":"IF(N310>=#REF!,\"\",IF(N310<=#REF!,#REF!,#REF!))","v":{"$error":"#REF!"}},{"$f":"IF(N310>#REF!,\"\",#REF!)","v":{"$error":"#REF!"}},null,null,null,null,303,{"$f":"IF(V310>#REF!,\"\",$T$7)","v":{"$error":"#REF!"}},{"$f":"IF(V310>=#REF!,\"\",IF(V310<=#REF!,#REF!,#REF!))","v":{"$error":"#REF!"}},{"$f":"IF(V310>#REF!,\"\",#REF!)","v":{"$error":"#REF!"}},null,null,null,null,null,null,null,303]
[304,{"$f":"IF(A311>=#REF!,\"\",IF(A311<=#REF!,#REF!,#REF!))","v":{"$error":"#REF!"}},{"$f":"IF(A311>=#REF!,\"\",IF(A311<=#REF!,#REF!,#REF!))","v":{"$error":"#REF!"}},{"$f":"IF(A311>#REF!,\"\",#REF!)","v":{"$error":"#REF!"}},null,304,{"$f":"IF(F311>=#REF!,\"\",IF(F311<=#REF!,#REF!,#REF!))","v":{"$error":"#REF!"}},{"$f":"IF(F311>=#REF!,\"\",IF(F311<=#REF!,#REF!,#REF!))","v":{"$error":"#REF!"}},{"$f":"IF(F311>#REF!,\"\",PMT(#REF!/12,#REF!,-#REF!))","v":{"$error":"#REF!"}},null,null,null,null,304,{"$f":"IF(N311>#REF!,\"\",$L$7)","v":{"$error":"#REF!"}},{"$f":"IF(N311>=#REF!,\"\",IF(N311<=#REF!,#REF!,#REF!))","v":{"$error":"#REF!"}},{"$f":"IF(N311>#REF!,\"\",#REF!)","v":{"$error":"#REF!"}},null,null,null,null,304,{"$f":"IF(V311>#REF!,\"\",$T$7)","v":{"$error":"#REF!"}},{"$f":"IF(V311>=#REF!,\"\",IF(V311<=#REF!,#REF!,#REF!))","v":{"$error":"#REF!"}},{"$f":"IF(V311>#REF!,\"\",#REF!)","v":{"$error":"#REF!"}},null,null,null,null,null,null,null,304]
[305,{"$f":"IF(A312>=#REF!,\"\",IF(A312<=#REF!,#REF!,#REF!))","v":{"$error":"#REF!"}},{"$f":"IF(A312>=#REF!,\"\",IF(A312<=#REF!,#REF!,#REF!))","v":{"$error":"#REF!"}},{"$f":"IF(A312>#REF!,\"\",#REF!)","v":{"$error":"#REF!"}},null,305,{"$f":"IF(F312>=#REF!,\"\",IF(F312<=#REF!,#REF!,#REF!))","v":{"$error":"#REF!"}},{"$f":"IF(F312>=#REF!,\"\",IF(F312<=#REF!,#REF!,#REF!))","v":{"$error":"#REF!"}},{"$f":"IF(F312>#REF!,\"\",PMT(#REF!/12,#REF!,-#REF!))","v":{"$error":"#REF!"}},null,null,null,null,305,{"$f":"IF(N312>#REF!,\"\",$L$7)","v":{"$error":"#REF!"}},{"$f":"IF(N312>=#REF!,\"\",IF(N312<=#REF!,#REF!,#REF!))","v":{"$error":"#REF!"}},{"$f":"IF(N312>#REF!,\"\",#REF!)","v":{"$error":"#REF!"}},null,null,null,null,305,{"$f":"IF(V312>#REF!,\"\",$T$7)","v":{"$error":"#REF!"}},{"$f":"IF(V312>=#REF!,\"\",IF(V312<=#REF!,#REF!,#REF!))","v":{"$error":"#REF!"}},{"$f":"IF(V312>#REF!,\"\",#REF!)","v":{"$error":"#REF!"}},null,null,null,null,null,null,null,305]
[306,{"$f":"IF(A313>=#REF!,\"\",IF(A313<=#REF!,#REF!,#REF!))","v":{"$error":"#REF!"}},{"$f":"IF(A313>=#REF!,\"\",IF(A313<=#REF!,#REF!,#REF!))","v":{"$error":"#REF!"}},{"$f":"IF(A313>#REF!,\"\",#REF!)","v":{"$error":"#REF!"}},null,306,{"$f":"IF(F313>=#REF!,\"\",IF(F313<=#REF!,#REF!,#REF!))","v":{"$error":"#REF!"}},{"$f":"IF(F313>=#REF!,\"\",IF(F313<=#REF!,#REF!,#REF!))","v":{"$error":"#REF!"}},{"$f":"IF(F313>#REF!,\"\",PMT(#REF!/12,#REF!,-#REF!))","v":{"$error":"#REF!"}},null,null,null,null,306,{"$f":"IF(N313>#REF!,\"\",$L$7)","v":{"$error":"#REF!"}},{"$f":"IF(N313>=#REF!,\"\",IF(N313<=#REF!,#REF!,#REF!))","v":{"$error":"#REF!"}},{"$f":"IF(N313>#REF!,\"\",#REF!)","v":{"$error":"#REF!"}},null,null,null,null,306,{"$f":"IF(V313>#REF!,\"\",$T$7)","v":{"$error":"#REF!"}},{"$f":"IF(V313>=#REF!,\"\",IF(V313<=#REF!,#REF!,#REF!))","v":{"$error":"#REF!"}},{"$f":"IF(V313>#REF!,\"\",#REF!)","v":{"$error":"#REF!"}},null,null,null,null,null,null,null,306]
[307,{"$f":"IF(A314>=#REF!,\"\",IF(A314<=#REF!,#REF!,#REF!))","v":{"$error":"#REF!"}},{"$f":"IF(A314>=#REF!,\"\",IF(A314<=#REF!,#REF!,#REF!))","v":{"$error":"#REF!"}},{"$f":"IF(A314>#REF!,\"\",#REF!)","v":{"$error":"#REF!"}},null,307,{"$f":"IF(F314>=#REF!,\"\",IF(F314<=#REF!,#REF!,#REF!))","v":{"$error":"#REF!"}},{"$f":"IF(F314>=#REF!,\"\",IF(F314<=#REF!,#REF!,#REF!))","v":{"$error":"#REF!"}},{"$f":"IF(F314>#REF!,\"\",PMT(#REF!/12,#REF!,-#REF!))","v":{"$error":"#REF!"}},null,null,null,null,307,{"$f":"IF(N314>#REF!,\"\",$L$7)","v":{"$error":"#REF!"}},{"$f":"IF(N314>=#REF!,\"\",IF(N314<=#REF!,#REF!,#REF!))","v":{"$error":"#REF!"}},{"$f":"IF(N314>#REF!,\"\",#REF!)","v":{"$error":"#REF!"}},null,null,null,null,307,{"$f":"IF(V314>#REF!,\"\",$T$7)","v":{"$error":"#REF!"}},{"$f":"IF(V314>=#REF!,\"\",IF(V314<=#REF!,#REF!,#REF!))","v":{"$error":"#REF!"}},{"$f":"IF(V314>#REF!,\"\",#REF!)","v":{"$error":"#REF!"}},null,null,null,null,null,null,null,307]
[308,{"$f":"IF(A315>=#REF!,\"\",IF(A315<=#REF!,#REF!,#REF!))","v":{"$error":"#REF!"}},{"$f":"IF(A315>=#REF!,\"\",IF(A315<=#REF!,#REF!,#REF!))","v":{"$error":"#REF!"}},{"$f":"IF(A315>#REF!,\"\",#REF!)","v":{"$error":"#REF!"}},null,308,{"$f":"IF(F315>=#REF!,\"\",IF(F315<=#REF!,#REF!,#REF!))","v":{"$error":"#REF!"}},{"$f":"IF(F315>=#REF!,\"\",IF(F315<=#REF!,#REF!,#REF!))","v":{"$error":"#REF!"}},{"$f":"IF(F315>#REF!,\"\",PMT(#REF!/12,#REF!,-#REF!))","v":{"$error":"#REF!"}},null,null,null,null,308,{"$f":"IF(N315>#REF!,\"\",$L$7)","v":{"$error":"#REF!"}},{"$f":"IF(N315>=#REF!,\"\",IF(N315<=#REF!,#REF!,#REF!))","v":{"$error":"#REF!"}},{"$f":"IF(N315>#REF!,\"\",#REF!)","v":{"$error":"#REF!"}},null,null,null,null,308,{"$f":"IF(V315>#REF!,\"\",$T$7)","v":{"$error":"#REF!"}},{"$f":"IF(V315>=#REF!,\"\",IF(V315<=#REF!,#REF!,#REF!))","v":{"$error":"#REF!"}},{"$f":"IF(V315>#REF!,\"\",#REF!)","v":{"$error":"#REF!"}},null,null,null,null,null,null,null,308]
[309,{"$f":"IF(A316>=#REF!,\"\",IF(A316<=#REF!,#REF!,#REF!))","v":{"$error":"#REF!"}},{"$f":"IF(A316>=#REF!,\"\",IF(A316<=#REF!,#REF!,#REF!))","v":{"$error":"#REF!"}},{"$f":"IF(A316>#REF!,\"\",#REF!)","v":{"$error":"#REF!"}},null,309,{"$f":"IF(F316>=#REF!,\"\",IF(F316<=#REF!,#REF!,#REF!))","v":{"$error":"#REF!"}},{"$f":"IF(F316>=#REF!,\"\",IF(F316<=#REF!,#REF!,#REF!))","v":{"$error":"#REF!"}},{"$f":"IF(F316>#REF!,\"\",PMT(#REF!/12,#REF!,-#REF!))","v":{"$error":"#REF!"}},null,null,null,null,309,{"$f":"IF(N316>#REF!,\"\",$L$7)","v":{"$error":"#REF!"}},{"$f":"IF(N316>=#REF!,\"\",IF(N316<=#REF!,#REF!,#REF!))","v":{"$error":"#REF!"}},{"$f":"IF(N316>#REF!,\"\",#REF!)","v":{"$error":"#REF!"}},null,null,null,null,309,{"$f":"IF(V316>#REF!,\"\",$T$7)","v":{"$error":"#REF!"}},{"$f":"IF(V316>=#REF!,\"\",IF(V316<=#REF!,#REF!,#REF!))","v":{"$error":"#REF!"}},{"$f":"IF(V316>#REF!,\"\",#REF!)","v":{"$error":"#REF!"}},null,null,null,null,null,null,null,309]
[310,{"$f":"IF(A317>=#REF!,\"\",IF(A317<=#REF!,#REF!,#REF!))","v":{"$error":"#REF!"}},{"$f":"IF(A317>=#REF!,\"\",IF(A317<=#REF!,#REF!,#REF!))","v":{"$error":"#REF!"}},{"$f":"IF(A317>#REF!,\"\",#REF!)","v":{"$error":"#REF!"}},null,310,{"$f":"IF(F317>=#REF!,\"\",IF(F317<=#REF!,#REF!,#REF!))","v":{"$error":"#REF!"}},{"$f":"IF(F317>=#REF!,\"\",IF(F317<=#REF!,#REF!,#REF!))","v":{"$error":"#REF!"}},{"$f":"IF(F317>#REF!,\"\",PMT(#REF!/12,#REF!,-#REF!))","v":{"$error":"#REF!"}},null,null,null,null,310,{"$f":"IF(N317>#REF!,\"\",$L$7)","v":{"$error":"#REF!"}},{"$f":"IF(N317>=#REF!,\"\",IF(N317<=#REF!,#REF!,#REF!))","v":{"$error":"#REF!"}},{"$f":"IF(N317>#REF!,\"\",#REF!)","v":{"$error":"#REF!"}},null,null,null,null,310,{"$f":"IF(V317>#REF!,\"\",$T$7)","v":{"$error":"#REF!"}},{"$f":"IF(V317>=#REF!,\"\",IF(V317<=#REF!,#REF!,#REF!))","v":{"$error":"#REF!"}},{"$f":"IF(V317>#REF!,\"\",#REF!)","v":{"$error":"#REF!"}},null,null,null,null,null,null,null,310]
[311,{"$f":"IF(A318>=#REF!,\"\",IF(A318<=#REF!,#REF!,#REF!))","v":{"$error":"#REF!"}},{"$f":"IF(A318>=#REF!,\"\",IF(A318<=#REF!,#REF!,#REF!))","v":{"$error":"#REF!"}},{"$f":"IF(A318>#REF!,\"\",#REF!)","v":{"$error":"#REF!"}},null,311,{"$f":"IF(F318>=#REF!,\"\",IF(F318<=#REF!,#REF!,#REF!))","v":{"$error":"#REF!"}},{"$f":"IF(F318>=#REF!,\"\",IF(F318<=#REF!,#REF!,#REF!))","v":{"$error":"#REF!"}},{"$f":"IF(F318>#REF!,\"\",PMT(#REF!/12,#REF!,-#REF!))","v":{"$error":"#REF!"}},null,null,null,null,311,{"$f":"IF(N318>#REF!,\"\",$L$7)","v":{"$error":"#REF!"}},{"$f":"IF(N318>=#REF!,\"\",IF(N318<=#REF!,#REF!,#REF!))","v":{"$error":"#REF!"}},{"$f":"IF(N318>#REF!,\"\",#REF!)","v":{"$error":"#REF!"}},null,null,null,null,311,{"$f":"IF(V318>#REF!,\"\",$T$7)","v":{"$error":"#REF!"}},{"$f":"IF(V318>=#REF!,\"\",IF(V318<=#REF!,#REF!,#REF!))","v":{"$error":"#REF!"}},{"$f":"IF(V318>#REF!,\"\",#REF!)","v":{"$error":"#REF!"}},null,null,null,null,null,null,null,311]
[312,{"$f":"IF(A319>=#REF!,\"\",IF(A319<=#REF!,#REF!,#REF!))","v":{"$error":"#REF!"}},{"$f":"IF(A319>=#REF!,\"\",IF(A319<=#REF!,#REF!,#REF!))","v":{"$error":"#REF!"}},{"$f":"IF(A319>#REF!,\"\",#REF!)","v":{"$error":"#REF!"}},null,312,{"$f":"IF(F319>=#REF!,\"\",IF(F319<=#REF!,#REF!,#REF!))","v":{"$error":"#REF!"}},{"$f":"IF(F319>=#REF!,\"\",IF(F319<=#REF!,#REF!,#REF!))","v":{"$error":"#REF!"}},{"$f":"IF(F319>#REF!,\"\",PMT(#REF!/12,#REF!,-#REF!))","v":{"$error":"#REF!"}},null,null,null,null,312,{"$f":"IF(N319>#REF!,\"\",$L$7)","v":{"$error":"#REF!"}},{"$f":"IF(N319>=#REF!,\"\",IF(N319<=#REF!,#REF!,#REF!))","v":{"$error":"#REF!"}},{"$f":"IF(N319>#REF!,\"\",#REF!)","v":{"$error":"#REF!"}},null,null,null,null,312,{"$f":"IF(V319>#REF!,\"\",$T$7)","v":{"$error":"#REF!"}},{"$f":"IF(V319>=#REF!,\"\",IF(V319<=#REF!,#REF!,#REF!))","v":{"$error":"#REF!"}},{"$f":"IF(V319>#REF!,\"\",#REF!)","v":{"$error":"#REF!"}},null,null,null,null,null,null,null,312]
[313,{"$f":"IF(A320>=#REF!,\"\",IF(A320<=#REF!,#REF!,#REF!))","v":{"$error":"#REF!"}},{"$f":"IF(A320>=#REF!,\"\",IF(A320<=#REF!,#REF!,#REF!))","v":{"$error":"#REF!"}},{"$f":"IF(A320>#REF!,\"\",#REF!)","v":{"$error":"#REF!"}},null,313,{"$f":"IF(F320>=#REF!,\"\",IF(F320<=#REF!,#REF!,#REF!))","v":{"$error":"#REF!"}},{"$f":"IF(F320>=#REF!,\"\",IF(F320<=#REF!,#REF!,#REF!))","v":{"$error":"#REF!"}},{"$f":"IF(F320>#REF!,\"\",PMT(#REF!/12,#REF!,-#REF!))","v":{"$error":"#REF!"}},null,null,null,null,313,{"$f":"IF(N320>#REF!,\"\",$L$7)","v":{"$error":"#REF!"}},{"$f":"IF(N320>=#REF!,\"\",IF(N320<=#REF!,#REF!,#REF!))","v":{"$error":"#REF!"}},{"$f":"IF(N320>#REF!,\"\",#REF!)","v":{"$error":"#REF!"}},null,null,null,null,313,{"$f":"IF(V320>#REF!,\"\",$T$7)","v":{"$error":"#REF!"}},{"$f":"IF(V320>=#REF!,\"\",IF(V320<=#REF!,#REF!,#REF!))","v":{"$error":"#REF!"}},{"$f":"IF(V320>#REF!,\"\",#REF!)","v":{"$error":"#REF!"}},null,null,null,null,null,null,null,313]
[314,{"$f":"IF(A321>=#REF!,\"\",IF(A321<=#REF!,#REF!,#REF!))","v":{"$error":"#REF!"}},{"$f":"IF(A321>=#REF!,\"\",IF(A321<=#REF!,#REF!,#REF!))","v":{"$error":"#REF!"}},{"$f":"IF(A321>#REF!,\"\",#REF!)","v":{"$error":"#REF!"}},null,314,{"$f":"IF(F321>=#REF!,\"\",IF(F321<=#REF!,#REF!,#REF!))","v":{"$error":"#REF!"}},{"$f":"IF(F321>=#REF!,\"\",IF(F321<=#REF!,#REF!,#REF!))","v":{"$error":"#REF!"}},{"$f":"IF(F321>#REF!,\"\",PMT(#REF!/12,#REF!,-#REF!))","v":{"$error":"#REF!"}},null,null,null,null,314,{"$f":"IF(N321>#REF!,\"\",$L$7)","v":{"$error":"#REF!"}},{"$f":"IF(N321>=#REF!,\"\",IF(N321<=#REF!,#REF!,#REF!))","v":{"$error":"#REF!"}},{"$f":"IF(N321>#REF!,\"\",#REF!)","v":{"$error":"#REF!"}},null,null,null,null,314,{"$f":"IF(V321>#REF!,\"\",$T$7)","v":{"$error":"#REF!"}},{"$f":"IF(V321>=#REF!,\"\",IF(V321<=#REF!,#REF!,#REF!))","v":{"$error":"#REF!"}},{"$f":"IF(V321>#REF!,\"\",#REF!)","v":{"$error":"#REF!"}},null,null,null,null,null,null,null,314]
[315,{"$f":"IF(A322>=#REF!,\"\",IF(A322<=#REF!,#REF!,#REF!))","v":{"$error":"#REF!"}},{"$f":"IF(A322>=#REF!,\"\",IF(A322<=#REF!,#REF!,#REF!))","v":{"$error":"#REF!"}},{"$f":"IF(A322>#REF!,\"\",#REF!)","v":{"$error":"#REF!"}},null,315,{"$f":"IF(F322>=#REF!,\"\",IF(F322<=#REF!,#REF!,#REF!))","v":{"$error":"#REF!"}},{"$f":"IF(F322>=#REF!,\"\",IF(F322<=#REF!,#REF!,#REF!))","v":{"$error":"#REF!"}},{"$f":"IF(F322>#REF!,\"\",PMT(#REF!/12,#REF!,-#REF!))","v":{"$error":"#REF!"}},null,null,null,null,315,{"$f":"IF(N322>#REF!,\"\",$L$7)","v":{"$error":"#REF!"}},{"$f":"IF(N322>=#REF!,\"\",IF(N322<=#REF!,#REF!,#REF!))","v":{"$error":"#REF!"}},{"$f":"IF(N322>#REF!,\"\",#REF!)","v":{"$error":"#REF!"}},null,null,null,null,315,{"$f":"IF(V322>#REF!,\"\",$T$7)","v":{"$error":"#REF!"}},{"$f":"IF(V322>=#REF!,\"\",IF(V322<=#REF!,#REF!,#REF!))","v":{"$error":"#REF!"}},{"$f":"IF(V322>#REF!,\"\",#REF!)","v":{"$error":"#REF!"}},null,null,null,null,null,null,null,315]
[316,{"$f":"IF(A323>=#REF!,\"\",IF(A323<=#REF!,#REF!,#REF!))","v":{"$error":"#REF!"}},{"$f":"IF(A323>=#REF!,\"\",IF(A323<=#REF!,#REF!,#REF!))","v":{"$error":"#REF!"}},{"$f":"IF(A323>#REF!,\"\",#REF!)","v":{"$error":"#REF!"}},null,316,{"$f":"IF(F323>=#REF!,\"\",IF(F323<=#REF!,#REF!,#REF!))","v":{"$error":"#REF!"}},{"$f":"IF(F323>=#REF!,\"\",IF(F323<=#REF!,#REF!,#REF!))","v":{"$error":"#REF!"}},{"$f":"IF(F323>#REF!,\"\",PMT(#REF!/12,#REF!,-#REF!))","v":{"$error":"#REF!"}},null,null,null,null,316,{"$f":"IF(N323>#REF!,\"\",$L$7)","v":{"$error":"#REF!"}},{"$f":"IF(N323>=#REF!,\"\",IF(N323<=#REF!,#REF!,#REF!))","v":{"$error":"#REF!"}},{"$f":"IF(N323>#REF!,\"\",#REF!)","v":{"$error":"#REF!"}},null,null,null,null,316,{"$f":"IF(V323>#REF!,\"\",$T$7)","v":{"$error":"#REF!"}},{"$f":"IF(V323>=#REF!,\"\",IF(V323<=#REF!,#REF!,#REF!))","v":{"$error":"#REF!"}},{"$f":"IF(V323>#REF!,\"\",#REF!)","v":{"$error":"#REF!"}},null,null,null,null,null,null,null,316]
[317,{"$f":"IF(A324>=#REF!,\"\",IF(A324<=#REF!,#REF!,#REF!))","v":{"$error":"#REF!"}},{"$f":"IF(A324>=#REF!,\"\",IF(A324<=#REF!,#REF!,#REF!))","v":{"$error":"#REF!"}},{"$f":"IF(A324>#REF!,\"\",#REF!)","v":{"$error":"#REF!"}},null,317,{"$f":"IF(F324>=#REF!,\"\",IF(F324<=#REF!,#REF!,#REF!))","v":{"$error":"#REF!"}},{"$f":"IF(F324>=#REF!,\"\",IF(F324<=#REF!,#REF!,#REF!))","v":{"$error":"#REF!"}},{"$f":"IF(F324>#REF!,\"\",PMT(#REF!/12,#REF!,-#REF!))","v":{"$error":"#REF!"}},null,null,null,null,317,{"$f":"IF(N324>#REF!,\"\",$L$7)","v":{"$error":"#REF!"}},{"$f":"IF(N324>=#REF!,\"\",IF(N324<=#REF!,#REF!,#REF!))","v":{"$error":"#REF!"}},{"$f":"IF(N324>#REF!,\"\",#REF!)","v":{"$error":"#REF!"}},null,null,null,null,317,{"$f":"IF(V324>#REF!,\"\",$T$7)","v":{"$error":"#REF!"}},{"$f":"IF(V324>=#REF!,\"\",IF(V324<=#REF!,#REF!,#REF!))","v":{"$error":"#REF!"}},{"$f":"IF(V324>#REF!,\"\",#REF!)","v":{"$error":"#REF!"}},null,null,null,null,null,null,null,317]
[318,{"$f":"IF(A325>=#REF!,\"\",IF(A325<=#REF!,#REF!,#REF!))","v":{"$error":"#REF!"}},{"$f":"IF(A325>=#REF!,\"\",IF(A325<=#REF!,#REF!,#REF!))","v":{"$error":"#REF!"}},{"$f":"IF(A325>#REF!,\"\",#REF!)","v":{"$error":"#REF!"}},null,318,{"$f":"IF(F325>=#REF!,\"\",IF(F325<=#REF!,#REF!,#REF!))","v":{"$error":"#REF!"}},{"$f":"IF(F325>=#REF!,\"\",IF(F325<=#REF!,#REF!,#REF!))","v":{"$error":"#REF!"}},{"$f":"IF(F325>#REF!,\"\",PMT(#REF!/12,#REF!,-#REF!))","v":{"$error":"#REF!"}},null,null,null,null,318,{"$f":"IF(N325>#REF!,\"\",$L$7)","v":{"$error":"#REF!"}},{"$f":"IF(N325>=#REF!,\"\",IF(N325<=#REF!,#REF!,#REF!))","v":{"$error":"#REF!"}},{"$f":"IF(N325>#REF!,\"\",#REF!)","v":{"$error":"#REF!"}},null,null,null,null,318,{"$f":"IF(V325>#REF!,\"\",$T$7)","v":{"$error":"#REF!"}},{"$f":"IF(V325>=#REF!,\"\",IF(V325<=#REF!,#REF!,#REF!))","v":{"$error":"#REF!"}},{"$f":"IF(V325>#REF!,\"\",#REF!)","v":{"$error":"#REF!"}},null,null,null,null,null,null,null,318]
[319,{"$f":"IF(A326>=#REF!,\"\",IF(A326<=#REF!,#REF!,#REF!))","v":{"$error":"#REF!"}},{"$f":"IF(A326>=#REF!,\"\",IF(A326<=#REF!,#REF!,#REF!))","v":{"$error":"#REF!"}},{"$f":"IF(A326>#REF!,\"\",#REF!)","v":{"$error":"#REF!"}},null,319,{"$f":"IF(F326>=#REF!,\"\",IF(F326<=#REF!,#REF!,#REF!))","v":{"$error":"#REF!"}},{"$f":"IF(F326>=#REF!,\"\",IF(F326<=#REF!,#REF!,#REF!))","v":{"$error":"#REF!"}},{"$f":"IF(F326>#REF!,\"\",PMT(#REF!/12,#REF!,-#REF!))","v":{"$error":"#REF!"}},null,null,null,null,319,{"$f":"IF(N326>#REF!,\"\",$L$7)","v":{"$error":"#REF!"}},{"$f":"IF(N326>=#REF!,\"\",IF(N326<=#REF!,#REF!,#REF!))","v":{"$error":"#REF!"}},{"$f":"IF(N326>#REF!,\"\",#REF!)","v":{"$error":"#REF!"}},null,null,null,null,319,{"$f":"IF(V326>#REF!,\"\",$T$7)","v":{"$error":"#REF!"}},{"$f":"IF(V326>=#REF!,\"\",IF(V326<=#REF!,#REF!,#REF!))","v":{"$error":"#REF!"}},{"$f":"IF(V326>#REF!,\"\",#REF!)","v":{"$error":"#REF!"}},null,null,null,null,null,null,null,319]
[320,{"$f":"IF(A327>=#REF!,\"\",IF(A327<=#REF!,#REF!,#REF!))","v":{"$error":"#REF!"}},{"$f":"IF(A327>=#REF!,\"\",IF(A327<=#REF!,#REF!,#REF!))","v":{"$error":"#REF!"}},{"$f":"IF(A327>#REF!,\"\",#REF!)","v":{"$error":"#REF!"}},null,320,{"$f":"IF(F327>=#REF!,\"\",IF(F327<=#REF!,#REF!,#REF!))","v":{"$error":"#REF!"}},{"$f":"IF(F327>=#REF!,\"\",IF(F327<=#REF!,#REF!,#REF!))","v":{"$error":"#REF!"}},{"$f":"IF(F327>#REF!,\"\",PMT(#REF!/12,#REF!,-#REF!))","v":{"$error":"#REF!"}},null,null,null,null,320,{"$f":"IF(N327>#REF!,\"\",$L$7)","v":{"$error":"#REF!"}},{"$f":"IF(N327>=#REF!,\"\",IF(N327<=#REF!,#REF!,#REF!))","v":{"$error":"#REF!"}},{"$f":"IF(N327>#REF!,\"\",#REF!)","v":{"$error":"#REF!"}},null,null,null,null,320,{"$f":"IF(V327>#REF!,\"\",$T$7)","v":{"$error":"#REF!"}},{"$f":"IF(V327>=#REF!,\"\",IF(V327<=#REF!,#REF!,#REF!))","v":{"$error":"#REF!"}},{"$f":"IF(V327>#REF!,\"\",#REF!)","v":{"$error":"#REF!"}},null,null,null,null,null,null,null,320]
[321,{"$f":"IF(A328>=#REF!,\"\",IF(A328<=#REF!,#REF!,#REF!))","v":{"$error":"#REF!"}},{"$f":"IF(A328>=#REF!,\"\",IF(A328<=#REF!,#REF!,#REF!))","v":{"$error":"#REF!"}},{"$f":"IF(A328>#REF!,\"\",#REF!)","v":{"$error":"#REF!"}},null,321,{"$f":"IF(F328>=#REF!,\"\",IF(F328<=#REF!,#REF!,#REF!))","v":{"$error":"#REF!"}},{"$f":"IF(F328>=#REF!,\"\",IF(F328<=#REF!,#REF!,#REF!))","v":{"$error":"#REF!"}},{"$f":"IF(F328>#REF!,\"\",PMT(#REF!/12,#REF!,-#REF!))","v":{"$error":"#REF!"}},null,null,null,null,321,{"$f":"IF(N328>#REF!,\"\",$L$7)","v":{"$error":"#REF!"}},{"$f":"IF(N328>=#REF!,\"\",IF(N328<=#REF!,#REF!,#REF!))","v":{"$error":"#REF!"}},{"$f":"IF(N328>#REF!,\"\",#REF!)","v":{"$error":"#REF!"}},null,null,null,null,321,{"$f":"IF(V328>#REF!,\"\",$T$7)","v":{"$error":"#REF!"}},{"$f":"IF(V328>=#REF!,\"\",IF(V328<=#REF!,#REF!,#REF!))","v":{"$error":"#REF!"}},{"$f":"IF(V328>#REF!,\"\",#REF!)","v":{"$error":"#REF!"}},null,null,null,null,null,null,null,321]
[322,{"$f":"IF(A329>=#REF!,\"\",IF(A329<=#REF!,#REF!,#REF!))","v":{"$error":"#REF!"}},{"$f":"IF(A329>=#REF!,\"\",IF(A329<=#REF!,#REF!,#REF!))","v":{"$error":"#REF!"}},{"$f":"IF(A329>#REF!,\"\",#REF!)","v":{"$error":"#REF!"}},null,322,{"$f":"IF(F329>=#REF!,\"\",IF(F329<=#REF!,#REF!,#REF!))","v":{"$error":"#REF!"}},{"$f":"IF(F329>=#REF!,\"\",IF(F329<=#REF!,#REF!,#REF!))","v":{"$error":"#REF!"}},{"$f":"IF(F329>#REF!,\"\",PMT(#REF!/12,#REF!,-#REF!))","v":{"$error":"#REF!"}},null,null,null,null,322,{"$f":"IF(N329>#REF!,\"\",$L$7)","v":{"$error":"#REF!"}},{"$f":"IF(N329>=#REF!,\"\",IF(N329<=#REF!,#REF!,#REF!))","v":{"$error":"#REF!"}},{"$f":"IF(N329>#REF!,\"\",#REF!)","v":{"$error":"#REF!"}},null,null,null,null,322,{"$f":"IF(V329>#REF!,\"\",$T$7)","v":{"$error":"#REF!"}},{"$f":"IF(V329>=#REF!,\"\",IF(V329<=#REF!,#REF!,#REF!))","v":{"$error":"#REF!"}},{"$f":"IF(V329>#REF!,\"\",#REF!)","v":{"$error":"#REF!"}},null,null,null,null,null,null,null,322]
[323,{"$f":"IF(A330>=#REF!,\"\",IF(A330<=#REF!,#REF!,#REF!))","v":{"$error":"#REF!"}},{"$f":"IF(A330>=#REF!,\"\",IF(A330<=#REF!,#REF!,#REF!))","v":{"$error":"#REF!"}},{"$f":"IF(A330>#REF!,\"\",#REF!)","v":{"$error":"#REF!"}},null,323,{"$f":"IF(F330>=#REF!,\"\",IF(F330<=#REF!,#REF!,#REF!))","v":{"$error":"#REF!"}},{"$f":"IF(F330>=#REF!,\"\",IF(F330<=#REF!,#REF!,#REF!))","v":{"$error":"#REF!"}},{"$f":"IF(F330>#REF!,\"\",PMT(#REF!/12,#REF!,-#REF!))","v":{"$error":"#REF!"}},null,null,null,null,323,{"$f":"IF(N330>#REF!,\"\",$L$7)","v":{"$error":"#REF!"}},{"$f":"IF(N330>=#REF!,\"\",IF(N330<=#REF!,#REF!,#REF!))","v":{"$error":"#REF!"}},{"$f":"IF(N330>#REF!,\"\",#REF!)","v":{"$error":"#REF!"}},null,null,null,null,323,{"$f":"IF(V330>#REF!,\"\",$T$7)","v":{"$error":"#REF!"}},{"$f":"IF(V330>=#REF!,\"\",IF(V330<=#REF!,#REF!,#REF!))","v":{"$error":"#REF!"}},{"$f":"IF(V330>#REF!,\"\",#REF!)","v":{"$error":"#REF!"}},null,null,null,null,null,null,null,323]
[324,{"$f":"IF(A331>=#REF!,\"\",IF(A331<=#REF!,#REF!,#REF!))","v":{"$error":"#REF!"}},{"$f":"IF(A331>=#REF!,\"\",IF(A331<=#REF!,#REF!,#REF!))","v":{"$error":"#REF!"}},{"$f":"IF(A331>#REF!,\"\",#REF!)","v":{"$error":"#REF!"}},null,324,{"$f":"IF(F331>=#REF!,\"\",IF(F331<=#REF!,#REF!,#REF!))","v":{"$error":"#REF!"}},{"$f":"IF(F331>=#REF!,\"\",IF(F331<=#REF!,#REF!,#REF!))","v":{"$error":"#REF!"}},{"$f":"IF(F331>#REF!,\"\",PMT(#REF!/12,#REF!,-#REF!))","v":{"$error":"#REF!"}},null,null,null,null,324,{"$f":"IF(N331>#REF!,\"\",$L$7)","v":{"$error":"#REF!"}},{"$f":"IF(N331>=#REF!,\"\",IF(N331<=#REF!,#REF!,#REF!))","v":{"$error":"#REF!"}},{"$f":"IF(N331>#REF!,\"\",#REF!)","v":{"$error":"#REF!"}},null,null,null,null,324,{"$f":"IF(V331>#REF!,\"\",$T$7)","v":{"$error":"#REF!"}},{"$f":"IF(V331>=#REF!,\"\",IF(V331<=#REF!,#REF!,#REF!))","v":{"$error":"#REF!"}},{"$f":"IF(V331>#REF!,\"\",#REF!)","v":{"$error":"#REF!"}},null,null,null,null,null,null,null,324]
[325,{"$f":"IF(A332>=#REF!,\"\",IF(A332<=#REF!,#REF!,#REF!))","v":{"$error":"#REF!"}},{"$f":"IF(A332>=#REF!,\"\",IF(A332<=#REF!,#REF!,#REF!))","v":{"$error":"#REF!"}},{"$f":"IF(A332>#REF!,\"\",#REF!)","v":{"$error":"#REF!"}},null,325,{"$f":"IF(F332>=#REF!,\"\",IF(F332<=#REF!,#REF!,#REF!))","v":{"$error":"#REF!"}},{"$f":"IF(F332>=#REF!,\"\",IF(F332<=#REF!,#REF!,#REF!))","v":{"$error":"#REF!"}},{"$f":"IF(F332>#REF!,\"\",PMT(#REF!/12,#REF!,-#REF!))","v":{"$error":"#REF!"}},null,null,null,null,325,{"$f":"IF(N332>#REF!,\"\",$L$7)","v":{"$error":"#REF!"}},{"$f":"IF(N332>=#REF!,\"\",IF(N332<=#REF!,#REF!,#REF!))","v":{"$error":"#REF!"}},{"$f":"IF(N332>#REF!,\"\",#REF!)","v":{"$error":"#REF!"}},null,null,null,null,325,{"$f":"IF(V332>#REF!,\"\",$T$7)","v":{"$error":"#REF!"}},{"$f":"IF(V332>=#REF!,\"\",IF(V332<=#REF!,#REF!,#REF!))","v":{"$error":"#REF!"}},{"$f":"IF(V332>#REF!,\"\",#REF!)","v":{"$error":"#REF!"}},null,null,null,null,null,null,null,325]
[326,{"$f":"IF(A333>=#REF!,\"\",IF(A333<=#REF!,#REF!,#REF!))","v":{"$error":"#REF!"}},{"$f":"IF(A333>=#REF!,\"\",IF(A333<=#REF!,#REF!,#REF!))","v":{"$error":"#REF!"}},{"$f":"IF(A333>#REF!,\"\",#REF!)","v":{"$error":"#REF!"}},null,326,{"$f":"IF(F333>=#REF!,\"\",IF(F333<=#REF!,#REF!,#REF!))","v":{"$error":"#REF!"}},{"$f":"IF(F333>=#REF!,\"\",IF(F333<=#REF!,#REF!,#REF!))","v":{"$error":"#REF!"}},{"$f":"IF(F333>#REF!,\"\",PMT(#REF!/12,#REF!,-#REF!))","v":{"$error":"#REF!"}},null,null,null,null,326,{"$f":"IF(N333>#REF!,\"\",$L$7)","v":{"$error":"#REF!"}},{"$f":"IF(N333>=#REF!,\"\",IF(N333<=#REF!,#REF!,#REF!))","v":{"$error":"#REF!"}},{"$f":"IF(N333>#REF!,\"\",#REF!)","v":{"$error":"#REF!"}},null,null,null,null,326,{"$f":"IF(V333>#REF!,\"\",$T$7)","v":{"$error":"#REF!"}},{"$f":"IF(V333>=#REF!,\"\",IF(V333<=#REF!,#REF!,#REF!))","v":{"$error":"#REF!"}},{"$f":"IF(V333>#REF!,\"\",#REF!)","v":{"$error":"#REF!"}},null,null,null,null,null,null,null,326]
[327,{"$f":"IF(A334>=#REF!,\"\",IF(A334<=#REF!,#REF!,#REF!))","v":{"$error":"#REF!"}},{"$f":"IF(A334>=#REF!,\"\",IF(A334<=#REF!,#REF!,#REF!))","v":{"$error":"#REF!"}},{"$f":"IF(A334>#REF!,\"\",#REF!)","v":{"$error":"#REF!"}},null,327,{"$f":"IF(F334>=#REF!,\"\",IF(F334<=#REF!,#REF!,#REF!))","v":{"$error":"#REF!"}},{"$f":"IF(F334>=#REF!,\"\",IF(F334<=#REF!,#REF!,#REF!))","v":{"$error":"#REF!"}},{"$f":"IF(F334>#REF!,\"\",PMT(#REF!/12,#REF!,-#REF!))","v":{"$error":"#REF!"}},null,null,null,null,327,{"$f":"IF(N334>#REF!,\"\",$L$7)","v":{"$error":"#REF!"}},{"$f":"IF(N334>=#REF!,\"\",IF(N334<=#REF!,#REF!,#REF!))","v":{"$error":"#REF!"}},{"$f":"IF(N334>#REF!,\"\",#REF!)","v":{"$error":"#REF!"}},null,null,null,null,327,{"$f":"IF(V334>#REF!,\"\",$T$7)","v":{"$error":"#REF!"}},{"$f":"IF(V334>=#REF!,\"\",IF(V334<=#REF!,#REF!,#REF!))","v":{"$error":"#REF!"}},{"$f":"IF(V334>#REF!,\"\",#REF!)","v":{"$error":"#REF!"}},null,null,null,null,null,null,null,327]
[328,{"$f":"IF(A335>=#REF!,\"\",IF(A335<=#REF!,#REF!,#REF!))","v":{"$error":"#REF!"}},{"$f":"IF(A335>=#REF!,\"\",IF(A335<=#REF!,#REF!,#REF!))","v":{"$error":"#REF!"}},{"$f":"IF(A335>#REF!,\"\",#REF!)","v":{"$error":"#REF!"}},null,328,{"$f":"IF(F335>=#REF!,\"\",IF(F335<=#REF!,#REF!,#REF!))","v":{"$error":"#REF!"}},{"$f":"IF(F335>=#REF!,\"\",IF(F335<=#REF!,#REF!,#REF!))","v":{"$error":"#REF!"}},{"$f":"IF(F335>#REF!,\"\",PMT(#REF!/12,#REF!,-#REF!))","v":{"$error":"#REF!"}},null,null,null,null,328,{"$f":"IF(N335>#REF!,\"\",$L$7)","v":{"$error":"#REF!"}},{"$f":"IF(N335>=#REF!,\"\",IF(N335<=#REF!,#REF!,#REF!))","v":{"$error":"#REF!"}},{"$f":"IF(N335>#REF!,\"\",#REF!)","v":{"$error":"#REF!"}},null,null,null,null,328,{"$f":"IF(V335>#REF!,\"\",$T$7)","v":{"$error":"#REF!"}},{"$f":"IF(V335>=#REF!,\"\",IF(V335<=#REF!,#REF!,#REF!))","v":{"$error":"#REF!"}},{"$f":"IF(V335>#REF!,\"\",#REF!)","v":{"$error":"#REF!"}},null,null,null,null,null,null,null,328]
[329,{"$f":"IF(A336>=#REF!,\"\",IF(A336<=#REF!,#REF!,#REF!))","v":{"$error":"#REF!"}},{"$f":"IF(A336>=#REF!,\"\",IF(A336<=#REF!,#REF!,#REF!))","v":{"$error":"#REF!"}},{"$f":"IF(A336>#REF!,\"\",#REF!)","v":{"$error":"#REF!"}},null,329,{"$f":"IF(F336>=#REF!,\"\",IF(F336<=#REF!,#REF!,#REF!))","v":{"$error":"#REF!"}},{"$f":"IF(F336>=#REF!,\"\",IF(F336<=#REF!,#REF!,#REF!))","v":{"$error":"#REF!"}},{"$f":"IF(F336>#REF!,\"\",PMT(#REF!/12,#REF!,-#REF!))","v":{"$error":"#REF!"}},null,null,null,null,329,{"$f":"IF(N336>#REF!,\"\",$L$7)","v":{"$error":"#REF!"}},{"$f":"IF(N336>=#REF!,\"\",IF(N336<=#REF!,#REF!,#REF!))","v":{"$error":"#REF!"}},{"$f":"IF(N336>#REF!,\"\",#REF!)","v":{"$error":"#REF!"}},null,null,null,null,329,{"$f":"IF(V336>#REF!,\"\",$T$7)","v":{"$error":"#REF!"}},{"$f":"IF(V336>=#REF!,\"\",IF(V336<=#REF!,#REF!,#REF!))","v":{"$error":"#REF!"}},{"$f":"IF(V336>#REF!,\"\",#REF!)","v":{"$error":"#REF!"}},null,null,null,null,null,null,null,329]
[330,{"$f":"IF(A337>=#REF!,\"\",IF(A337<=#REF!,#REF!,#REF!))","v":{"$error":"#REF!"}},{"$f":"IF(A337>=#REF!,\"\",IF(A337<=#REF!,#REF!,#REF!))","v":{"$error":"#REF!"}},{"$f":"IF(A337>#REF!,\"\",#REF!)","v":{"$error":"#REF!"}},null,330,{"$f":"IF(F337>=#REF!,\"\",IF(F337<=#REF!,#REF!,#REF!))","v":{"$error":"#REF!"}},{"$f":"IF(F337>=#REF!,\"\",IF(F337<=#REF!,#REF!,#REF!))","v":{"$error":"#REF!"}},{"$f":"IF(F337>#REF!,\"\",PMT(#REF!/12,#REF!,-#REF!))","v":{"$error":"#REF!"}},null,null,null,null,330,{"$f":"IF(N337>#REF!,\"\",$L$7)","v":{"$error":"#REF!"}},{"$f":"IF(N337>=#REF!,\"\",IF(N337<=#REF!,#REF!,#REF!))","v":{"$error":"#REF!"}},{"$f":"IF(N337>#REF!,\"\",#REF!)","v":{"$error":"#REF!"}},null,null,null,null,330,{"$f":"IF(V337>#REF!,\"\",$T$7)","v":{"$error":"#REF!"}},{"$f":"IF(V337>=#REF!,\"\",IF(V337<=#REF!,#REF!,#REF!))","v":{"$error":"#REF!"}},{"$f":"IF(V337>#REF!,\"\",#REF!)","v":{"$error":"#REF!"}},null,null,null,null,null,null,null,330]
[331,{"$f":"IF(A338>=#REF!,\"\",IF(A338<=#REF!,#REF!,#REF!))","v":{"$error":"#REF!"}},{"$f":"IF(A338>=#REF!,\"\",IF(A338<=#REF!,#REF!,#REF!))","v":{"$error":"#REF!"}},{"$f":"IF(A338>#REF!,\"\",#REF!)","v":{"$error":"#REF!"}},null,331,{"$f":"IF(F338>=#REF!,\"\",IF(F338<=#REF!,#REF!,#REF!))","v":{"$error":"#REF!"}},{"$f":"IF(F338>=#REF!,\"\",IF(F338<=#REF!,#REF!,#REF!))","v":{"$error":"#REF!"}},{"$f":"IF(F338>#REF!,\"\",PMT(#REF!/12,#REF!,-#REF!))","v":{"$error":"#REF!"}},null,null,null,null,331,{"$f":"IF(N338>#REF!,\"\",$L$7)","v":{"$error":"#REF!"}},{"$f":"IF(N338>=#REF!,\"\",IF(N338<=#REF!,#REF!,#REF!))","v":{"$error":"#REF!"}},{"$f":"IF(N338>#REF!,\"\",#REF!)","v":{"$error":"#REF!"}},null,null,null,null,331,{"$f":"IF(V338>#REF!,\"\",$T$7)","v":{"$error":"#REF!"}},{"$f":"IF(V338>=#REF!,\"\",IF(V338<=#REF!,#REF!,#REF!))","v":{"$error":"#REF!"}},{"$f":"IF(V338>#REF!,\"\",#REF!)","v":{"$error":"#REF!"}},null,null,null,null,null,null,null,331]
[332,{"$f":"IF(A339>=#REF!,\"\",IF(A339<=#REF!,#REF!,#REF!))","v":{"$error":"#REF!"}},{"$f":"IF(A339>=#REF!,\"\",IF(A339<=#REF!,#REF!,#REF!))","v":{"$error":"#REF!"}},{"$f":"IF(A339>#REF!,\"\",#REF!)","v":{"$error":"#REF!"}},null,332,{"$f":"IF(F339>=#REF!,\"\",IF(F339<=#REF!,#REF!,#REF!))","v":{"$error":"#REF!"}},{"$f":"IF(F339>=#REF!,\"\",IF(F339<=#REF!,#REF!,#REF!))","v":{"$error":"#REF!"}},{"$f":"IF(F339>#REF!,\"\",PMT(#REF!/12,#REF!,-#REF!))","v":{"$error":"#REF!"}},null,null,null,null,332,{"$f":"IF(N339>#REF!,\"\",$L$7)","v":{"$error":"#REF!"}},{"$f":"IF(N339>=#REF!,\"\",IF(N339<=#REF!,#REF!,#REF!))","v":{"$error":"#REF!"}},{"$f":"IF(N339>#REF!,\"\",#REF!)","v":{"$error":"#REF!"}},null,null,null,null,332,{"$f":"IF(V339>#REF!,\"\",$T$7)","v":{"$error":"#REF!"}},{"$f":"IF(V339>=#REF!,\"\",IF(V339<=#REF!,#REF!,#REF!))","v":{"$error":"#REF!"}},{"$f":"IF(V339>#REF!,\"\",#REF!)","v":{"$error":"#REF!"}},null,null,null,null,null,null,null,332]
[333,{"$f":"IF(A340>=#REF!,\"\",IF(A340<=#REF!,#REF!,#REF!))","v":{"$error":"#REF!"}},{"$f":"IF(A340>=#REF!,\"\",IF(A340<=#REF!,#REF!,#REF!))","v":{"$error":"#REF!"}},{"$f":"IF(A340>#REF!,\"\",#REF!)","v":{"$error":"#REF!"}},null,333,{"$f":"IF(F340>=#REF!,\"\",IF(F340<=#REF!,#REF!,#REF!))","v":{"$error":"#REF!"}},{"$f":"IF(F340>=#REF!,\"\",IF(F340<=#REF!,#REF!,#REF!))","v":{"$error":"#REF!"}},{"$f":"IF(F340>#REF!,\"\",PMT(#REF!/12,#REF!,-#REF!))","v":{"$error":"#REF!"}},null,null,null,null,333,{"$f":"IF(N340>#REF!,\"\",$L$7)","v":{"$error":"#REF!"}},{"$f":"IF(N340>=#REF!,\"\",IF(N340<=#REF!,#REF!,#REF!))","v":{"$error":"#REF!"}},{"$f":"IF(N340>#REF!,\"\",#REF!)","v":{"$error":"#REF!"}},null,null,null,null,333,{"$f":"IF(V340>#REF!,\"\",$T$7)","v":{"$error":"#REF!"}},{"$f":"IF(V340>=#REF!,\"\",IF(V340<=#REF!,#REF!,#REF!))","v":{"$error":"#REF!"}},{"$f":"IF(V340>#REF!,\"\",#REF!)","v":{"$error":"#REF!"}},null,null,null,null,null,null,null,333]
[334,{"$f":"IF(A341>=#REF!,\"\",IF(A341<=#REF!,#REF!,#REF!))","v":{"$error":"#REF!"}},{"$f":"IF(A341>=#REF!,\"\",IF(A341<=#REF!,#REF!,#REF!))","v":{"$error":"#REF!"}},{"$f":"IF(A341>#REF!,\"\",#REF!)","v":{"$error":"#REF!"}},null,334,{"$f":"IF(F341>=#REF!,\"\",IF(F341<=#REF!,#REF!,#REF!))","v":{"$error":"#REF!"}},{"$f":"IF(F341>=#REF!,\"\",IF(F341<=#REF!,#REF!,#REF!))","v":{"$error":"#REF!"}},{"$f":"IF(F341>#REF!,\"\",PMT(#REF!/12,#REF!,-#REF!))","v":{"$error":"#REF!"}},null,null,null,null,334,{"$f":"IF(N341>#REF!,\"\",$L$7)","v":{"$error":"#REF!"}},{"$f":"IF(N341>=#REF!,\"\",IF(N341<=#REF!,#REF!,#REF!))","v":{"$error":"#REF!"}},{"$f":"IF(N341>#REF!,\"\",#REF!)","v":{"$error":"#REF!"}},null,null,null,null,334,{"$f":"IF(V341>#REF!,\"\",$T$7)","v":{"$error":"#REF!"}},{"$f":"IF(V341>=#REF!,\"\",IF(V341<=#REF!,#REF!,#REF!))","v":{"$error":"#REF!"}},{"$f":"IF(V341>#REF!,\"\",#REF!)","v":{"$error":"#REF!"}},null,null,null,null,null,null,null,334]
[335,{"$f":"IF(A342>=#REF!,\"\",IF(A342<=#REF!,#REF!,#REF!))","v":{"$error":"#REF!"}},{"$f":"IF(A342>=#REF!,\"\",IF(A342<=#REF!,#REF!,#REF!))","v":{"$error":"#REF!"}},{"$f":"IF(A342>#REF!,\"\",#REF!)","v":{"$error":"#REF!"}},null,335,{"$f":"IF(F342>=#REF!,\"\",IF(F342<=#REF!,#REF!,#REF!))","v":{"$error":"#REF!"}},{"$f":"IF(F342>=#REF!,\"\",IF(F342<=#REF!,#REF!,#REF!))","v":{"$error":"#REF!"}},{"$f":"IF(F342>#REF!,\"\",PMT(#REF!/12,#REF!,-#REF!))","v":{"$error":"#REF!"}},null,null,null,null,335,{"$f":"IF(N342>#REF!,\"\",$L$7)","v":{"$error":"#REF!"}},{"$f":"IF(N342>=#REF!,\"\",IF(N342<=#REF!,#REF!,#REF!))","v":{"$error":"#REF!"}},{"$f":"IF(N342>#REF!,\"\",#REF!)","v":{"$error":"#REF!"}},null,null,null,null,335,{"$f":"IF(V342>#REF!,\"\",$T$7)","v":{"$error":"#REF!"}},{"$f":"IF(V342>=#REF!,\"\",IF(V342<=#REF!,#REF!,#REF!))","v":{"$error":"#REF!"}},{"$f":"IF(V342>#REF!,\"\",#REF!)","v":{"$error":"#REF!"}},null,null,null,null,null,null,null,335]
[336,{"$f":"IF(A343>=#REF!,\"\",IF(A343<=#REF!,#REF!,#REF!))","v":{"$error":"#REF!"}},{"$f":"IF(A343>=#REF!,\"\",IF(A343<=#REF!,#REF!,#REF!))","v":{"$error":"#REF!"}},{"$f":"IF(A343>#REF!,\"\",#REF!)","v":{"$error":"#REF!"}},null,336,{"$f":"IF(F343>=#REF!,\"\",IF(F343<=#REF!,#REF!,#REF!))","v":{"$error":"#REF!"}},{"$f":"IF(F343>=#REF!,\"\",IF(F343<=#REF!,#REF!,#REF!))","v":{"$error":"#REF!"}},{"$f":"IF(F343>#REF!,\"\",PMT(#REF!/12,#REF!,-#REF!))","v":{"$error":"#REF!"}},null,null,null,null,336,{"$f":"IF(N343>#REF!,\"\",$L$7)","v":{"$error":"#REF!"}},{"$f":"IF(N343>=#REF!,\"\",IF(N343<=#REF!,#REF!,#REF!))","v":{"$error":"#REF!"}},{"$f":"IF(N343>#REF!,\"\",#REF!)","v":{"$error":"#REF!"}},null,null,null,null,336,{"$f":"IF(V343>#REF!,\"\",$T$7)","v":{"$error":"#REF!"}},{"$f":"IF(V343>=#REF!,\"\",IF(V343<=#REF!,#REF!,#REF!))","v":{"$error":"#REF!"}},{"$f":"IF(V343>#REF!,\"\",#REF!)","v":{"$error":"#REF!"}},null,null,null,null,null,null,null,336]
[337,{"$f":"IF(A344>=#REF!,\"\",IF(A344<=#REF!,#REF!,#REF!))","v":{"$error":"#REF!"}},{"$f":"IF(A344>=#REF!,\"\",IF(A344<=#REF!,#REF!,#REF!))","v":{"$error":"#REF!"}},{"$f":"IF(A344>#REF!,\"\",#REF!)","v":{"$error":"#REF!"}},null,337,{"$f":"IF(F344>=#REF!,\"\",IF(F344<=#REF!,#REF!,#REF!))","v":{"$error":"#REF!"}},{"$f":"IF(F344>=#REF!,\"\",IF(F344<=#REF!,#REF!,#REF!))","v":{"$error":"#REF!"}},{"$f":"IF(F344>#REF!,\"\",PMT(#REF!/12,#REF!,-#REF!))","v":{"$error":"#REF!"}},null,null,null,null,337,{"$f":"IF(N344>#REF!,\"\",$L$7)","v":{"$error":"#REF!"}},{"$f":"IF(N344>=#REF!,\"\",IF(N344<=#REF!,#REF!,#REF!))","v":{"$error":"#REF!"}},{"$f":"IF(N344>#REF!,\"\",#REF!)","v":{"$error":"#REF!"}},null,null,null,null,337,{"$f":"IF(V344>#REF!,\"\",$T$7)","v":{"$error":"#REF!"}},{"$f":"IF(V344>=#REF!,\"\",IF(V344<=#REF!,#REF!,#REF!))","v":{"$error":"#REF!"}},{"$f":"IF(V344>#REF!,\"\",#REF!)","v":{"$error":"#REF!"}},null,null,null,null,null,null,null,337]
[338,{"$f":"IF(A345>=#REF!,\"\",IF(A345<=#REF!,#REF!,#REF!))","v":{"$error":"#REF!"}},{"$f":"IF(A345>=#REF!,\"\",IF(A345<=#REF!,#REF!,#REF!))","v":{"$error":"#REF!"}},{"$f":"IF(A345>#REF!,\"\",#REF!)","v":{"$error":"#REF!"}},null,338,{"$f":"IF(F345>=#REF!,\"\",IF(F345<=#REF!,#REF!,#REF!))","v":{"$error":"#REF!"}},{"$f":"IF(F345>=#REF!,\"\",IF(F345<=#REF!,#REF!,#REF!))","v":{"$error":"#REF!"}},{"$f":"IF(F345>#REF!,\"\",PMT(#REF!/12,#REF!,-#REF!))","v":{"$error":"#REF!"}},null,null,null,null,338,{"$f":"IF(N345>#REF!,\"\",$L$7)","v":{"$error":"#REF!"}},{"$f":"IF(N345>=#REF!,\"\",IF(N345<=#REF!,#REF!,#REF!))","v":{"$error":"#REF!"}},{"$f":"IF(N345>#REF!,\"\",#REF!)","v":{"$error":"#REF!"}},null,null,null,null,338,{"$f":"IF(V345>#REF!,\"\",$T$7)","v":{"$error":"#REF!"}},{"$f":"IF(V345>=#REF!,\"\",IF(V345<=#REF!,#REF!,#REF!))","v":{"$error":"#REF!"}},{"$f":"IF(V345>#REF!,\"\",#REF!)","v":{"$error":"#REF!"}},null,null,null,null,null,null,null,338]
[339,{"$f":"IF(A346>=#REF!,\"\",IF(A346<=#REF!,#REF!,#REF!))","v":{"$error":"#REF!"}},{"$f":"IF(A346>=#REF!,\"\",IF(A346<=#REF!,#REF!,#REF!))","v":{"$error":"#REF!"}},{"$f":"IF(A346>#REF!,\"\",#REF!)","v":{"$error":"#REF!"}},null,339,{"$f":"IF(F346>=#REF!,\"\",IF(F346<=#REF!,#REF!,#REF!))","v":{"$error":"#REF!"}},{"$f":"IF(F346>=#REF!,\"\",IF(F346<=#REF!,#REF!,#REF!))","v":{"$error":"#REF!"}},{"$f":"IF(F346>#REF!,\"\",PMT(#REF!/12,#REF!,-#REF!))","v":{"$error":"#REF!"}},null,null,null,null,339,{"$f":"IF(N346>#REF!,\"\",$L$7)","v":{"$error":"#REF!"}},{"$f":"IF(N346>=#REF!,\"\",IF(N346<=#REF!,#REF!,#REF!))","v":{"$error":"#REF!"}},{"$f":"IF(N346>#REF!,\"\",#REF!)","v":{"$error":"#REF!"}},null,null,null,null,339,{"$f":"IF(V346>#REF!,\"\",$T$7)","v":{"$error":"#REF!"}},{"$f":"IF(V346>=#REF!,\"\",IF(V346<=#REF!,#REF!,#REF!))","v":{"$error":"#REF!"}},{"$f":"IF(V346>#REF!,\"\",#REF!)","v":{"$error":"#REF!"}},null,null,null,null,null,null,null,339]
[340,{"$f":"IF(A347>=#REF!,\"\",IF(A347<=#REF!,#REF!,#REF!))","v":{"$error":"#REF!"}},{"$f":"IF(A347>=#REF!,\"\",IF(A347<=#REF!,#REF!,#REF!))","v":{"$error":"#REF!"}},{"$f":"IF(A347>#REF!,\"\",#REF!)","v":{"$error":"#REF!"}},null,340,{"$f":"IF(F347>=#REF!,\"\",IF(F347<=#REF!,#REF!,#REF!))","v":{"$error":"#REF!"}},{"$f":"IF(F347>=#REF!,\"\",IF(F347<=#REF!,#REF!,#REF!))","v":{"$error":"#REF!"}},{"$f":"IF(F347>#REF!,\"\",PMT(#REF!/12,#REF!,-#REF!))","v":{"$error":"#REF!"}},null,null,null,null,340,{"$f":"IF(N347>#REF!,\"\",$L$7)","v":{"$error":"#REF!"}},{"$f":"IF(N347>=#REF!,\"\",IF(N347<=#REF!,#REF!,#REF!))","v":{"$error":"#REF!"}},{"$f":"IF(N347>#REF!,\"\",#REF!)","v":{"$error":"#REF!"}},null,null,null,null,340,{"$f":"IF(V347>#REF!,\"\",$T$7)","v":{"$error":"#REF!"}},{"$f":"IF(V347>=#REF!,\"\",IF(V347<=#REF!,#REF!,#REF!))","v":{"$error":"#REF!"}},{"$f":"IF(V347>#REF!,\"\",#REF!)","v":{"$error":"#REF!"}},null,null,null,null,null,null,null,340]
[341,{"$f":"IF(A348>=#REF!,\"\",IF(A348<=#REF!,#REF!,#REF!))","v":{"$error":"#REF!"}},{"$f":"IF(A348>=#REF!,\"\",IF(A348<=#REF!,#REF!,#REF!))","v":{"$error":"#REF!"}},{"$f":"IF(A348>#REF!,\"\",#REF!)","v":{"$error":"#REF!"}},null,341,{"$f":"IF(F348>=#REF!,\"\",IF(F348<=#REF!,#REF!,#REF!))","v":{"$error":"#REF!"}},{"$f":"IF(F348>=#REF!,\"\",IF(F348<=#REF!,#REF!,#REF!))","v":{"$error":"#REF!"}},{"$f":"IF(F348>#REF!,\"\",PMT(#REF!/12,#REF!,-#REF!))","v":{"$error":"#REF!"}},null,null,null,null,341,{"$f":"IF(N348>#REF!,\"\",$L$7)","v":{"$error":"#REF!"}},{"$f":"IF(N348>=#REF!,\"\",IF(N348<=#REF!,#REF!,#REF!))","v":{"$error":"#REF!"}},{"$f":"IF(N348>#REF!,\"\",#REF!)","v":{"$error":"#REF!"}},null,null,null,null,341,{"$f":"IF(V348>#REF!,\"\",$T$7)","v":{"$error":"#REF!"}},{"$f":"IF(V348>=#REF!,\"\",IF(V348<=#REF!,#REF!,#REF!))","v":{"$error":"#REF!"}},{"$f":"IF(V348>#REF!,\"\",#REF!)","v":{"$error":"#REF!"}},null,null,null,null,null,null,null,341]
[342,{"$f":"IF(A349>=#REF!,\"\",IF(A349<=#REF!,#REF!,#REF!))","v":{"$error":"#REF!"}},{"$f":"IF(A349>=#REF!,\"\",IF(A349<=#REF!,#REF!,#REF!))","v":{"$error":"#REF!"}},{"$f":"IF(A349>#REF!,\"\",#REF!)","v":{"$error":"#REF!"}},null,342,{"$f":"IF(F349>=#REF!,\"\",IF(F349<=#REF!,#REF!,#REF!))","v":{"$error":"#REF!"}},{"$f":"IF(F349>=#REF!,\"\",IF(F349<=#REF!,#REF!,#REF!))","v":{"$error":"#REF!"}},{"$f":"IF(F349>#REF!,\"\",PMT(#REF!/12,#REF!,-#REF!))","v":{"$error":"#REF!"}},null,null,null,null,342,{"$f":"IF(N349>#REF!,\"\",$L$7)","v":{"$error":"#REF!"}},{"$f":"IF(N349>=#REF!,\"\",IF(N349<=#REF!,#REF!,#REF!))","v":{"$error":"#REF!"}},{"$f":"IF(N349>#REF!,\"\",#REF!)","v":{"$error":"#REF!"}},null,null,null,null,342,{"$f":"IF(V349>#REF!,\"\",$T$7)","v":{"$error":"#REF!"}},{"$f":"IF(V349>=#REF!,\"\",IF(V349<=#REF!,#REF!,#REF!))","v":{"$error":"#REF!"}},{"$f":"IF(V349>#REF!,\"\",#REF!)","v":{"$error":"#REF!"}},null,null,null,null,null,null,null,342]
[343,{"$f":"IF(A350>=#REF!,\"\",IF(A350<=#REF!,#REF!,#REF!))","v":{"$error":"#REF!"}},{"$f":"IF(A350>=#REF!,\"\",IF(A350<=#REF!,#REF!,#REF!))","v":{"$error":"#REF!"}},{"$f":"IF(A350>#REF!,\"\",#REF!)","v":{"$error":"#REF!"}},null,343,{"$f":"IF(F350>=#REF!,\"\",IF(F350<=#REF!,#REF!,#REF!))","v":{"$error":"#REF!"}},{"$f":"IF(F350>=#REF!,\"\",IF(F350<=#REF!,#REF!,#REF!))","v":{"$error":"#REF!"}},{"$f":"IF(F350>#REF!,\"\",PMT(#REF!/12,#REF!,-#REF!))","v":{"$error":"#REF!"}},null,null,null,null,343,{"$f":"IF(N350>#REF!,\"\",$L$7)","v":{"$error":"#REF!"}},{"$f":"IF(N350>=#REF!,\"\",IF(N350<=#REF!,#REF!,#REF!))","v":{"$error":"#REF!"}},{"$f":"IF(N350>#REF!,\"\",#REF!)","v":{"$error":"#REF!"}},null,null,null,null,343,{"$f":"IF(V350>#REF!,\"\",$T$7)","v":{"$error":"#REF!"}},{"$f":"IF(V350>=#REF!,\"\",IF(V350<=#REF!,#REF!,#REF!))","v":{"$error":"#REF!"}},{"$f":"IF(V350>#REF!,\"\",#REF!)","v":{"$error":"#REF!"}},null,null,null,null,null,null,null,343]
[344,{"$f":"IF(A351>=#REF!,\"\",IF(A351<=#REF!,#REF!,#REF!))","v":{"$error":"#REF!"}},{"$f":"IF(A351>=#REF!,\"\",IF(A351<=#REF!,#REF!,#REF!))","v":{"$error":"#REF!"}},{"$f":"IF(A351>#REF!,\"\",#REF!)","v":{"$error":"#REF!"}},null,344,{"$f":"IF(F351>=#REF!,\"\",IF(F351<=#REF!,#REF!,#REF!))","v":{"$error":"#REF!"}},{"$f":"IF(F351>=#REF!,\"\",IF(F351<=#REF!,#REF!,#REF!))","v":{"$error":"#REF!"}},{"$f":"IF(F351>#REF!,\"\",PMT(#REF!/12,#REF!,-#REF!))","v":{"$error":"#REF!"}},null,null,null,null,344,{"$f":"IF(N351>#REF!,\"\",$L$7)","v":{"$error":"#REF!"}},{"$f":"IF(N351>=#REF!,\"\",IF(N351<=#REF!,#REF!,#REF!))","v":{"$error":"#REF!"}},{"$f":"IF(N351>#REF!,\"\",#REF!)","v":{"$error":"#REF!"}},null,null,null,null,344,{"$f":"IF(V351>#REF!,\"\",$T$7)","v":{"$error":"#REF!"}},{"$f":"IF(V351>=#REF!,\"\",IF(V351<=#REF!,#REF!,#REF!))","v":{"$error":"#REF!"}},{"$f":"IF(V351>#REF!,\"\",#REF!)","v":{"$error":"#REF!"}},null,null,null,null,null,null,null,344]
[345,{"$f":"IF(A352>=#REF!,\"\",IF(A352<=#REF!,#REF!,#REF!))","v":{"$error":"#REF!"}},{"$f":"IF(A352>=#REF!,\"\",IF(A352<=#REF!,#REF!,#REF!))","v":{"$error":"#REF!"}},{"$f":"IF(A352>#REF!,\"\",#REF!)","v":{"$error":"#REF!"}},null,345,{"$f":"IF(F352>=#REF!,\"\",IF(F352<=#REF!,#REF!,#REF!))","v":{"$error":"#REF!"}},{"$f":"IF(F352>=#REF!,\"\",IF(F352<=#REF!,#REF!,#REF!))","v":{"$error":"#REF!"}},{"$f":"IF(F352>#REF!,\"\",PMT(#REF!/12,#REF!,-#REF!))","v":{"$error":"#REF!"}},null,null,null,null,345,{"$f":"IF(N352>#REF!,\"\",$L$7)","v":{"$error":"#REF!"}},{"$f":"IF(N352>=#REF!,\"\",IF(N352<=#REF!,#REF!,#REF!))","v":{"$error":"#REF!"}},{"$f":"IF(N352>#REF!,\"\",#REF!)","v":{"$error":"#REF!"}},null,null,null,null,345,{"$f":"IF(V352>#REF!,\"\",$T$7)","v":{"$error":"#REF!"}},{"$f":"IF(V352>=#REF!,\"\",IF(V352<=#REF!,#REF!,#REF!))","v":{"$error":"#REF!"}},{"$f":"IF(V352>#REF!,\"\",#REF!)","v":{"$error":"#REF!"}},null,null,null,null,null,null,null,345]
[346,{"$f":"IF(A353>=#REF!,\"\",IF(A353<=#REF!,#REF!,#REF!))","v":{"$error":"#REF!"}},{"$f":"IF(A353>=#REF!,\"\",IF(A353<=#REF!,#REF!,#REF!))","v":{"$error":"#REF!"}},{"$f":"IF(A353>#REF!,\"\",#REF!)","v":{"$error":"#REF!"}},null,346,{"$f":"IF(F353>=#REF!,\"\",IF(F353<=#REF!,#REF!,#REF!))","v":{"$error":"#REF!"}},{"$f":"IF(F353>=#REF!,\"\",IF(F353<=#REF!,#REF!,#REF!))","v":{"$error":"#REF!"}},{"$f":"IF(F353>#REF!,\"\",PMT(#REF!/12,#REF!,-#REF!))","v":{"$error":"#REF!"}},null,null,null,null,346,{"$f":"IF(N353>#REF!,\"\",$L$7)","v":{"$error":"#REF!"}},{"$f":"IF(N353>=#REF!,\"\",IF(N353<=#REF!,#REF!,#REF!))","v":{"$error":"#REF!"}},{"$f":"IF(N353>#REF!,\"\",#REF!)","v":{"$error":"#REF!"}},null,null,null,null,346,{"$f":"IF(V353>#REF!,\"\",$T$7)","v":{"$error":"#REF!"}},{"$f":"IF(V353>=#REF!,\"\",IF(V353<=#REF!,#REF!,#REF!))","v":{"$error":"#REF!"}},{"$f":"IF(V353>#REF!,\"\",#REF!)","v":{"$error":"#REF!"}},null,null,null,null,null,null,null,346]
[347,{"$f":"IF(A354>=#REF!,\"\",IF(A354<=#REF!,#REF!,#REF!))","v":{"$error":"#REF!"}},{"$f":"IF(A354>=#REF!,\"\",IF(A354<=#REF!,#REF!,#REF!))","v":{"$error":"#REF!"}},{"$f":"IF(A354>#REF!,\"\",#REF!)","v":{"$error":"#REF!"}},null,347,{"$f":"IF(F354>=#REF!,\"\",IF(F354<=#REF!,#REF!,#REF!))","v":{"$error":"#REF!"}},{"$f":"IF(F354>=#REF!,\"\",IF(F354<=#REF!,#REF!,#REF!))","v":{"$error":"#REF!"}},{"$f":"IF(F354>#REF!,\"\",PMT(#REF!/12,#REF!,-#REF!))","v":{"$error":"#REF!"}},null,null,null,null,347,{"$f":"IF(N354>#REF!,\"\",$L$7)","v":{"$error":"#REF!"}},{"$f":"IF(N354>=#REF!,\"\",IF(N354<=#REF!,#REF!,#REF!))","v":{"$error":"#REF!"}},{"$f":"IF(N354>#REF!,\"\",#REF!)","v":{"$error":"#REF!"}},null,null,null,null,347,{"$f":"IF(V354>#REF!,\"\",$T$7)","v":{"$error":"#REF!"}},{"$f":"IF(V354>=#REF!,\"\",IF(V354<=#REF!,#REF!,#REF!))","v":{"$error":"#REF!"}},{"$f":"IF(V354>#REF!,\"\",#REF!)","v":{"$error":"#REF!"}},null,null,null,null,null,null,null,347]
[348,{"$f":"IF(A355>=#REF!,\"\",IF(A355<=#REF!,#REF!,#REF!))","v":{"$error":"#REF!"}},{"$f":"IF(A355>=#REF!,\"\",IF(A355<=#REF!,#REF!,#REF!))","v":{"$error":"#REF!"}},{"$f":"IF(A355>#REF!,\"\",#REF!)","v":{"$error":"#REF!"}},null,348,{"$f":"IF(F355>=#REF!,\"\",IF(F355<=#REF!,#REF!,#REF!))","v":{"$error":"#REF!"}},{"$f":"IF(F355>=#REF!,\"\",IF(F355<=#REF!,#REF!,#REF!))","v":{"$error":"#REF!"}},{"$f":"IF(F355>#REF!,\"\",PMT(#REF!/12,#REF!,-#REF!))","v":{"$error":"#REF!"}},null,null,null,null,348,{"$f":"IF(N355>#REF!,\"\",$L$7)","v":{"$error":"#REF!"}},{"$f":"IF(N355>=#REF!,\"\",IF(N355<=#REF!,#REF!,#REF!))","v":{"$error":"#REF!"}},{"$f":"IF(N355>#REF!,\"\",#REF!)","v":{"$error":"#REF!"}},null,null,null,null,348,{"$f":"IF(V355>#REF!,\"\",$T$7)","v":{"$error":"#REF!"}},{"$f":"IF(V355>=#REF!,\"\",IF(V355<=#REF!,#REF!,#REF!))","v":{"$error":"#REF!"}},{"$f":"IF(V355>#REF!,\"\",#REF!)","v":{"$error":"#REF!"}},null,null,null,null,null,null,null,348]
[349,{"$f":"IF(A356>=#REF!,\"\",IF(A356<=#REF!,#REF!,#REF!))","v":{"$error":"#REF!"}},{"$f":"IF(A356>=#REF!,\"\",IF(A356<=#REF!,#REF!,#REF!))","v":{"$error":"#REF!"}},{"$f":"IF(A356>#REF!,\"\",#REF!)","v":{"$error":"#REF!"}},null,349,{"$f":"IF(F356>=#REF!,\"\",IF(F356<=#REF!,#REF!,#REF!))","v":{"$error":"#REF!"}},{"$f":"IF(F356>=#REF!,\"\",IF(F356<=#REF!,#REF!,#REF!))","v":{"$error":"#REF!"}},{"$f":"IF(F356>#REF!,\"\",PMT(#REF!/12,#REF!,-#REF!))","v":{"$error":"#REF!"}},null,null,null,null,349,{"$f":"IF(N356>#REF!,\"\",$L$7)","v":{"$error":"#REF!"}},{"$f":"IF(N356>=#REF!,\"\",IF(N356<=#REF!,#REF!,#REF!))","v":{"$error":"#REF!"}},{"$f":"IF(N356>#REF!,\"\",#REF!)","v":{"$error":"#REF!"}},null,null,null,null,349,{"$f":"IF(V356>#REF!,\"\",$T$7)","v":{"$error":"#REF!"}},{"$f":"IF(V356>=#REF!,\"\",IF(V356<=#REF!,#REF!,#REF!))","v":{"$error":"#REF!"}},{"$f":"IF(V356>#REF!,\"\",#REF!)","v":{"$error":"#REF!"}},null,null,null,null,null,null,null,349]
[350,{"$f":"IF(A357>=#REF!,\"\",IF(A357<=#REF!,#REF!,#REF!))","v":{"$error":"#REF!"}},{"$f":"IF(A357>=#REF!,\"\",IF(A357<=#REF!,#REF!,#REF!))","v":{"$error":"#REF!"}},{"$f":"IF(A357>#REF!,\"\",#REF!)","v":{"$error":"#REF!"}},null,350,{"$f":"IF(F357>=#REF!,\"\",IF(F357<=#REF!,#REF!,#REF!))","v":{"$error":"#REF!"}},{"$f":"IF(F357>=#REF!,\"\",IF(F357<=#REF!,#REF!,#REF!))","v":{"$error":"#REF!"}},{"$f":"IF(F357>#REF!,\"\",PMT(#REF!/12,#REF!,-#REF!))","v":{"$error":"#REF!"}},null,null,null,null,350,{"$f":"IF(N357>#REF!,\"\",$L$7)","v":{"$error":"#REF!"}},{"$f":"IF(N357>=#REF!,\"\",IF(N357<=#REF!,#REF!,#REF!))","v":{"$error":"#REF!"}},{"$f":"IF(N357>#REF!,\"\",#REF!)","v":{"$error":"#REF!"}},null,null,null,null,350,{"$f":"IF(V357>#REF!,\"\",$T$7)","v":{"$error":"#REF!"}},{"$f":"IF(V357>=#REF!,\"\",IF(V357<=#REF!,#REF!,#REF!))","v":{"$error":"#REF!"}},{"$f":"IF(V357>#REF!,\"\",#REF!)","v":{"$error":"#REF!"}},null,null,null,null,null,null,null,350]
[351,{"$f":"IF(A358>=#REF!,\"\",IF(A358<=#REF!,#REF!,#REF!))","v":{"$error":"#REF!"}},{"$f":"IF(A358>=#REF!,\"\",IF(A358<=#REF!,#REF!,#REF!))","v":{"$error":"#REF!"}},{"$f":"IF(A358>#REF!,\"\",#REF!)","v":{"$error":"#REF!"}},null,351,{"$f":"IF(F358>=#REF!,\"\",IF(F358<=#REF!,#REF!,#REF!))","v":{"$error":"#REF!"}},{"$f":"IF(F358>=#REF!,\"\",IF(F358<=#REF!,#REF!,#REF!))","v":{"$error":"#REF!"}},{"$f":"IF(F358>#REF!,\"\",PMT(#REF!/12,#REF!,-#REF!))","v":{"$error":"#REF!"}},null,null,null,null,351,{"$f":"IF(N358>#REF!,\"\",$L$7)","v":{"$error":"#REF!"}},{"$f":"IF(N358>=#REF!,\"\",IF(N358<=#REF!,#REF!,#REF!))","v":{"$error":"#REF!"}},{"$f":"IF(N358>#REF!,\"\",#REF!)","v":{"$error":"#REF!"}},null,null,null,null,351,{"$f":"IF(V358>#REF!,\"\",$T$7)","v":{"$error":"#REF!"}},{"$f":"IF(V358>=#REF!,\"\",IF(V358<=#REF!,#REF!,#REF!))","v":{"$error":"#REF!"}},{"$f":"IF(V358>#REF!,\"\",#REF!)","v":{"$error":"#REF!"}},null,null,null,null,null,null,null,351]
[352,{"$f":"IF(A359>=#REF!,\"\",IF(A359<=#REF!,#REF!,#REF!))","v":{"$error":"#REF!"}},{"$f":"IF(A359>=#REF!,\"\",IF(A359<=#REF!,#REF!,#REF!))","v":{"$error":"#REF!"}},{"$f":"IF(A359>#REF!,\"\",#REF!)","v":{"$error":"#REF!"}},null,352,{"$f":"IF(F359>=#REF!,\"\",IF(F359<=#REF!,#REF!,#REF!))","v":{"$error":"#REF!"}},{"$f":"IF(F359>=#REF!,\"\",IF(F359<=#REF!,#REF!,#REF!))","v":{"$error":"#REF!"}},{"$f":"IF(F359>#REF!,\"\",PMT(#REF!/12,#REF!,-#REF!))","v":{"$error":"#REF!"}},null,null,null,null,352,{"$f":"IF(N359>#REF!,\"\",$L$7)","v":{"$error":"#REF!"}},{"$f":"IF(N359>=#REF!,\"\",IF(N359<=#REF!,#REF!,#REF!))","v":{"$error":"#REF!"}},{"$f":"IF(N359>#REF!,\"\",#REF!)","v":{"$error":"#REF!"}},null,null,null,null,352,{"$f":"IF(V359>#REF!,\"\",$T$7)","v":{"$error":"#REF!"}},{"$f":"IF(V359>=#REF!,\"\",IF(V359<=#REF!,#REF!,#REF!))","v":{"$error":"#REF!"}},{"$f":"IF(V359>#REF!,\"\",#REF!)","v":{"$error":"#REF!"}},null,null,null,null,null,null,null,352]
[353,{"$f":"IF(A360>=#REF!,\"\",IF(A360<=#REF!,#REF!,#REF!))","v":{"$error":"#REF!"}},{"$f":"IF(A360>=#REF!,\"\",IF(A360<=#REF!,#REF!,#REF!))","v":{"$error":"#REF!"}},{"$f":"IF(A360>#REF!,\"\",#REF!)","v":{"$error":"#REF!"}},null,353,{"$f":"IF(F360>=#REF!,\"\",IF(F360<=#REF!,#REF!,#REF!))","v":{"$error":"#REF!"}},{"$f":"IF(F360>=#REF!,\"\",IF(F360<=#REF!,#REF!,#REF!))","v":{"$error":"#REF!"}},{"$f":"IF(F360>#REF!,\"\",PMT(#REF!/12,#REF!,-#REF!))","v":{"$error":"#REF!"}},null,null,null,null,353,{"$f":"IF(N360>#REF!,\"\",$L$7)","v":{"$error":"#REF!"}},{"$f":"IF(N360>=#REF!,\"\",IF(N360<=#REF!,#REF!,#REF!))","v":{"$error":"#REF!"}},{"$f":"IF(N360>#REF!,\"\",#REF!)","v":{"$error":"#REF!"}},null,null,null,null,353,{"$f":"IF(V360>#REF!,\"\",$T$7)","v":{"$error":"#REF!"}},{"$f":"IF(V360>=#REF!,\"\",IF(V360<=#REF!,#REF!,#REF!))","v":{"$error":"#REF!"}},{"$f":"IF(V360>#REF!,\"\",#REF!)","v":{"$error":"#REF!"}},null,null,null,null,null,null,null,353]
[354,{"$f":"IF(A361>=#REF!,\"\",IF(A361<=#REF!,#REF!,#REF!))","v":{"$error":"#REF!"}},{"$f":"IF(A361>=#REF!,\"\",IF(A361<=#REF!,#REF!,#REF!))","v":{"$error":"#REF!"}},{"$f":"IF(A361>#REF!,\"\",#REF!)","v":{"$error":"#REF!"}},null,354,{"$f":"IF(F361>=#REF!,\"\",IF(F361<=#REF!,#REF!,#REF!))","v":{"$error":"#REF!"}},{"$f":"IF(F361>=#REF!,\"\",IF(F361<=#REF!,#REF!,#REF!))","v":{"$error":"#REF!"}},{"$f":"IF(F361>#REF!,\"\",PMT(#REF!/12,#REF!,-#REF!))","v":{"$error":"#REF!"}},null,null,null,null,354,{"$f":"IF(N361>#REF!,\"\",$L$7)","v":{"$error":"#REF!"}},{"$f":"IF(N361>=#REF!,\"\",IF(N361<=#REF!,#REF!,#REF!))","v":{"$error":"#REF!"}},{"$f":"IF(N361>#REF!,\"\",#REF!)","v":{"$error":"#REF!"}},null,null,null,null,354,{"$f":"IF(V361>#REF!,\"\",$T$7)","v":{"$error":"#REF!"}},{"$f":"IF(V361>=#REF!,\"\",IF(V361<=#REF!,#REF!,#REF!))","v":{"$error":"#REF!"}},{"$f":"IF(V361>#REF!,\"\",#REF!)","v":{"$error":"#REF!"}},null,null,null,null,null,null,null,354]
[355,{"$f":"IF(A362>=#REF!,\"\",IF(A362<=#REF!,#REF!,#REF!))","v":{"$error":"#REF!"}},{"$f":"IF(A362>=#REF!,\"\",IF(A362<=#REF!,#REF!,#REF!))","v":{"$error":"#REF!"}},{"$f":"IF(A362>#REF!,\"\",#REF!)","v":{"$error":"#REF!"}},null,355,{"$f":"IF(F362>=#REF!,\"\",IF(F362<=#REF!,#REF!,#REF!))","v":{"$error":"#REF!"}},{"$f":"IF(F362>=#REF!,\"\",IF(F362<=#REF!,#REF!,#REF!))","v":{"$error":"#REF!"}},{"$f":"IF(F362>#REF!,\"\",PMT(#REF!/12,#REF!,-#REF!))","v":{"$error":"#REF!"}},null,null,null,null,355,{"$f":"IF(N362>#REF!,\"\",$L$7)","v":{"$error":"#REF!"}},{"$f":"IF(N362>=#REF!,\"\",IF(N362<=#REF!,#REF!,#REF!))","v":{"$error":"#REF!"}},{"$f":"IF(N362>#REF!,\"\",#REF!)","v":{"$error":"#REF!"}},null,null,null,null,355,{"$f":"IF(V362>#REF!,\"\",$T$7)","v":{"$error":"#REF!"}},{"$f":"IF(V362>=#REF!,\"\",IF(V362<=#REF!,#REF!,#REF!))","v":{"$error":"#REF!"}},{"$f":"IF(V362>#REF!,\"\",#REF!)","v":{"$error":"#REF!"}},null,null,null,null,null,null,null,355]
[356,{"$f":"IF(A363>=#REF!,\"\",IF(A363<=#REF!,#REF!,#REF!))","v":{"$error":"#REF!"}},{"$f":"IF(A363>=#REF!,\"\",IF(A363<=#REF!,#REF!,#REF!))","v":{"$error":"#REF!"}},{"$f":"IF(A363>#REF!,\"\",#REF!)","v":{"$error":"#REF!"}},null,356,{"$f":"IF(F363>=#REF!,\"\",IF(F363<=#REF!,#REF!,#REF!))","v":{"$error":"#REF!"}},{"$f":"IF(F363>=#REF!,\"\",IF(F363<=#REF!,#REF!,#REF!))","v":{"$error":"#REF!"}},{"$f":"IF(F363>#REF!,\"\",PMT(#REF!/12,#REF!,-#REF!))","v":{"$error":"#REF!"}},null,null,null,null,356,{"$f":"IF(N363>#REF!,\"\",$L$7)","v":{"$error":"#REF!"}},{"$f":"IF(N363>=#REF!,\"\",IF(N363<=#REF!,#REF!,#REF!))","v":{"$error":"#REF!"}},{"$f":"IF(N363>#REF!,\"\",#REF!)","v":{"$error":"#REF!"}},null,null,null,null,356,{"$f":"IF(V363>#REF!,\"\",$T$7)","v":{"$error":"#REF!"}},{"$f":"IF(V363>=#REF!,\"\",IF(V363<=#REF!,#REF!,#REF!))","v":{"$error":"#REF!"}},{"$f":"IF(V363>#REF!,\"\",#REF!)","v":{"$error":"#REF!"}},null,null,null,null,null,null,null,356]
[357,{"$f":"IF(A364>=#REF!,\"\",IF(A364<=#REF!,#REF!,#REF!))","v":{"$error":"#REF!"}},{"$f":"IF(A364>=#REF!,\"\",IF(A364<=#REF!,#REF!,#REF!))","v":{"$error":"#REF!"}},{"$f":"IF(A364>#REF!,\"\",#REF!)","v":{"$error":"#REF!"}},null,357,{"$f":"IF(F364>=#REF!,\"\",IF(F364<=#REF!,#REF!,#REF!))","v":{"$error":"#REF!"}},{"$f":"IF(F364>=#REF!,\"\",IF(F364<=#REF!,#REF!,#REF!))","v":{"$error":"#REF!"}},{"$f":"IF(F364>#REF!,\"\",PMT(#REF!/12,#REF!,-#REF!))","v":{"$error":"#REF!"}},null,null,null,null,357,{"$f":"IF(N364>#REF!,\"\",$L$7)","v":{"$error":"#REF!"}},{"$f":"IF(N364>=#REF!,\"\",IF(N364<=#REF!,#REF!,#REF!))","v":{"$error":"#REF!"}},{"$f":"IF(N364>#REF!,\"\",#REF!)","v":{"$error":"#REF!"}},null,null,null,null,357,{"$f":"IF(V364>#REF!,\"\",$T$7)","v":{"$error":"#REF!"}},{"$f":"IF(V364>=#REF!,\"\",IF(V364<=#REF!,#REF!,#REF!))","v":{"$error":"#REF!"}},{"$f":"IF(V364>#REF!,\"\",#REF!)","v":{"$error":"#REF!"}},null,null,null,null,null,null,null,357]
[358,{"$f":"IF(A365>=#REF!,\"\",IF(A365<=#REF!,#REF!,#REF!))","v":{"$error":"#REF!"}},{"$f":"IF(A365>=#REF!,\"\",IF(A365<=#REF!,#REF!,#REF!))","v":{"$error":"#REF!"}},{"$f":"IF(A365>#REF!,\"\",#REF!)","v":{"$error":"#REF!"}},null,358,{"$f":"IF(F365>=#REF!,\"\",IF(F365<=#REF!,#REF!,#REF!))","v":{"$error":"#REF!"}},{"$f":"IF(F365>=#REF!,\"\",IF(F365<=#REF!,#REF!,#REF!))","v":{"$error":"#REF!"}},{"$f":"IF(F365>#REF!,\"\",PMT(#REF!/12,#REF!,-#REF!))","v":{"$error":"#REF!"}},null,null,null,null,358,{"$f":"IF(N365>#REF!,\"\",$L$7)","v":{"$error":"#REF!"}},{"$f":"IF(N365>=#REF!,\"\",IF(N365<=#REF!,#REF!,#REF!))","v":{"$error":"#REF!"}},{"$f":"IF(N365>#REF!,\"\",#REF!)","v":{"$error":"#REF!"}},null,null,null,null,358,{"$f":"IF(V365>#REF!,\"\",$T$7)","v":{"$error":"#REF!"}},{"$f":"IF(V365>=#REF!,\"\",IF(V365<=#REF!,#REF!,#REF!))","v":{"$error":"#REF!"}},{"$f":"IF(V365>#REF!,\"\",#REF!)","v":{"$error":"#REF!"}},null,null,null,null,null,null,null,358]
[359,{"$f":"IF(A366>=#REF!,\"\",IF(A366<=#REF!,#REF!,#REF!))","v":{"$error":"#REF!"}},{"$f":"IF(A366>=#REF!,\"\",IF(A366<=#REF!,#REF!,#REF!))","v":{"$error":"#REF!"}},{"$f":"IF(A366>#REF!,\"\",#REF!)","v":{"$error":"#REF!"}},null,359,{"$f":"IF(F366>=#REF!,\"\",IF(F366<=#REF!,#REF!,#REF!))","v":{"$error":"#REF!"}},{"$f":"IF(F366>=#REF!,\"\",IF(F366<=#REF!,#REF!,#REF!))","v":{"$error":"#REF!"}},{"$f":"IF(F366>#REF!,\"\",PMT(#REF!/12,#REF!,-#REF!))","v":{"$error":"#REF!"}},null,null,null,null,359,{"$f":"IF(N366>#REF!,\"\",$L$7)","v":{"$error":"#REF!"}},{"$f":"IF(N366>=#REF!,\"\",IF(N366<=#REF!,#REF!,#REF!))","v":{"$error":"#REF!"}},{"$f":"IF(N366>#REF!,\"\",#REF!)","v":{"$error":"#REF!"}},null,null,null,null,359,{"$f":"IF(V366>#REF!,\"\",$T$7)","v":{"$error":"#REF!"}},{"$f":"IF(V366>=#REF!,\"\",IF(V366<=#REF!,#REF!,#REF!))","v":{"$error":"#REF!"}},{"$f":"IF(V366>#REF!,\"\",#REF!)","v":{"$error":"#REF!"}},null,null,null,null,null,null,null,359]
[360,{"$f":"IF(A367>=#REF!,\"\",IF(A367<=#REF!,#REF!,#REF!))","v":{"$error":"#REF!"}},{"$f":"IF(A367>=#REF!,\"\",IF(A367<=#REF!,#REF!,#REF!))","v":{"$error":"#REF!"}},{"$f":"IF(A367>#REF!,\"\",#REF!)","v":{"$error":"#REF!"}},null,360,{"$f":"IF(F367>=#REF!,\"\",IF(F367<=#REF!,#REF!,#REF!))","v":{"$error":"#REF!"}},{"$f":"IF(F367>=#REF!,\"\",IF(F367<=#REF!,#REF!,#REF!))","v":{"$error":"#REF!"}},{"$f":"IF(F367>#REF!,\"\",PMT(#REF!/12,#REF!,-#REF!))","v":{"$error":"#REF!"}},null,null,null,null,360,{"$f":"IF(N367>#REF!,\"\",$L$7)","v":{"$error":"#REF!"}},{"$f":"IF(N367>=#REF!,\"\",IF(N367<=#REF!,#REF!,#REF!))","v":{"$error":"#REF!"}},{"$f":"IF(N367>#REF!,\"\",#REF!)","v":{"$error":"#REF!"}},null,null,null,null,360,{"$f":"IF(V367>#REF!,\"\",$T$7)","v":{"$error":"#REF!"}},{"$f":"IF(V367>=#REF!,\"\",IF(V367<=#REF!,#REF!,#REF!))","v":{"$error":"#REF!"}},{"$f":"IF(V367>#REF!,\"\",#REF!)","v":{"$error":"#REF!"}},null,null,null,null,null,null,null,360]
[361,{"$f":"IF(A368>=#REF!,\"\",IF(A368<=#REF!,#REF!,#REF!))","v":{"$error":"#REF!"}},{"$f":"IF(A368>=#REF!,\"\",IF(A368<=#REF!,#REF!,#REF!))","v":{"$error":"#REF!"}},{"$f":"IF(A368>#REF!,\"\",#REF!)","v":{"$error":"#REF!"}},null,361,{"$f":"IF(F368>=#REF!,\"\",IF(F368<=#REF!,#REF!,#REF!))","v":{"$error":"#REF!"}},{"$f":"IF(F368>=#REF!,\"\",IF(F368<=#REF!,#REF!,#REF!))","v":{"$error":"#REF!"}},{"$f":"IF(F368>#REF!,\"\",PMT(#REF!/12,#REF!,-#REF!))","v":{"$error":"#REF!"}},null,null,null,null,361,{"$f":"IF(N368>#REF!,\"\",$L$7)","v":{"$error":"#REF!"}},{"$f":"IF(N368>=#REF!,\"\",IF(N368<=#REF!,#REF!,#REF!))","v":{"$error":"#REF!"}},{"$f":"IF(N368>#REF!,\"\",#REF!)","v":{"$error":"#REF!"}},null,null,null,null,361,{"$f":"IF(V368>#REF!,\"\",$T$7)","v":{"$error":"#REF!"}},{"$f":"IF(V368>=#REF!,\"\",IF(V368<=#REF!,#REF!,#REF!))","v":{"$error":"#REF!"}},{"$f":"IF(V368>#REF!,\"\",#REF!)","v":{"$error":"#REF!"}},null,null,null,null,null,null,null,361]
[362,{"$f":"IF(A369>=#REF!,\"\",IF(A369<=#REF!,#REF!,#REF!))","v":{"$error":"#REF!"}},{"$f":"IF(A369>=#REF!,\"\",IF(A369<=#REF!,#REF!,#REF!))","v":{"$error":"#REF!"}},{"$f":"IF(A369>#REF!,\"\",#REF!)","v":{"$error":"#REF!"}},null,362,{"$f":"IF(F369>=#REF!,\"\",IF(F369<=#REF!,#REF!,#REF!))","v":{"$error":"#REF!"}},{"$f":"IF(F369>=#REF!,\"\",IF(F369<=#REF!,#REF!,#REF!))","v":{"$error":"#REF!"}},{"$f":"IF(F369>#REF!,\"\",PMT(#REF!/12,#REF!,-#REF!))","v":{"$error":"#REF!"}},null,null,null,null,362,{"$f":"IF(N369>#REF!,\"\",$L$7)","v":{"$error":"#REF!"}},{"$f":"IF(N369>=#REF!,\"\",IF(N369<=#REF!,#REF!,#REF!))","v":{"$error":"#REF!"}},{"$f":"IF(N369>#REF!,\"\",#REF!)","v":{"$error":"#REF!"}},null,null,null,null,362,{"$f":"IF(V369>#REF!,\"\",$T$7)","v":{"$error":"#REF!"}},{"$f":"IF(V369>=#REF!,\"\",IF(V369<=#REF!,#REF!,#REF!))","v":{"$error":"#REF!"}},{"$f":"IF(V369>#REF!,\"\",#REF!)","v":{"$error":"#REF!"}},null,null,null,null,null,null,null,362]
[363,{"$f":"IF(A370>=#REF!,\"\",IF(A370<=#REF!,#REF!,#REF!))","v":{"$error":"#REF!"}},{"$f":"IF(A370>=#REF!,\"\",IF(A370<=#REF!,#REF!,#REF!))","v":{"$error":"#REF!"}},{"$f":"IF(A370>#REF!,\"\",#REF!)","v":{"$error":"#REF!"}},null,363,{"$f":"IF(F370>=#REF!,\"\",IF(F370<=#REF!,#REF!,#REF!))","v":{"$error":"#REF!"}},{"$f":"IF(F370>=#REF!,\"\",IF(F370<=#REF!,#REF!,#REF!))","v":{"$error":"#REF!"}},{"$f":"IF(F370>#REF!,\"\",PMT(#REF!/12,#REF!,-#REF!))","v":{"$error":"#REF!"}},null,null,null,null,363,{"$f":"IF(N370>#REF!,\"\",$L$7)","v":{"$error":"#REF!"}},{"$f":"IF(N370>=#REF!,\"\",IF(N370<=#REF!,#REF!,#REF!))","v":{"$error":"#REF!"}},{"$f":"IF(N370>#REF!,\"\",#REF!)","v":{"$error":"#REF!"}},null,null,null,null,363,{"$f":"IF(V370>#REF!,\"\",$T$7)","v":{"$error":"#REF!"}},{"$f":"IF(V370>=#REF!,\"\",IF(V370<=#REF!,#REF!,#REF!))","v":{"$error":"#REF!"}},{"$f":"IF(V370>#REF!,\"\",#REF!)","v":{"$error":"#REF!"}},null,null,null,null,null,null,null,363]
[364,{"$f":"IF(A371>=#REF!,\"\",IF(A371<=#REF!,#REF!,#REF!))","v":{"$error":"#REF!"}},{"$f":"IF(A371>=#REF!,\"\",IF(A371<=#REF!,#REF!,#REF!))","v":{"$error":"#REF!"}},{"$f":"IF(A371>#REF!,\"\",#REF!)","v":{"$error":"#REF!"}},null,364,{"$f":"IF(F371>=#REF!,\"\",IF(F371<=#REF!,#REF!,#REF!))","v":{"$error":"#REF!"}},{"$f":"IF(F371>=#REF!,\"\",IF(F371<=#REF!,#REF!,#REF!))","v":{"$error":"#REF!"}},{"$f":"IF(F371>#REF!,\"\",PMT(#REF!/12,#REF!,-#REF!))","v":{"$error":"#REF!"}},null,null,null,null,364,{"$f":"IF(N371>#REF!,\"\",$L$7)","v":{"$error":"#REF!"}},{"$f":"IF(N371>=#REF!,\"\",IF(N371<=#REF!,#REF!,#REF!))","v":{"$error":"#REF!"}},{"$f":"IF(N371>#REF!,\"\",#REF!)","v":{"$error":"#REF!"}},null,null,null,null,364,{"$f":"IF(V371>#REF!,\"\",$T$7)","v":{"$error":"#REF!"}},{"$f":"IF(V371>=#REF!,\"\",IF(V371<=#REF!,#REF!,#REF!))","v":{"$error":"#REF!"}},{"$f":"IF(V371>#REF!,\"\",#REF!)","v":{"$error":"#REF!"}},null,null,null,null,null,null,null,364]
[365,{"$f":"IF(A372>=#REF!,\"\",IF(A372<=#REF!,#REF!,#REF!))","v":{"$error":"#REF!"}},{"$f":"IF(A372>=#REF!,\"\",IF(A372<=#REF!,#REF!,#REF!))","v":{"$error":"#REF!"}},{"$f":"IF(A372>#REF!,\"\",#REF!)","v":{"$error":"#REF!"}},null,365,{"$f":"IF(F372>=#REF!,\"\",IF(F372<=#REF!,#REF!,#REF!))","v":{"$error":"#REF!"}},{"$f":"IF(F372>=#REF!,\"\",IF(F372<=#REF!,#REF!,#REF!))","v":{"$error":"#REF!"}},{"$f":"IF(F372>#REF!,\"\",PMT(#REF!/12,#REF!,-#REF!))","v":{"$error":"#REF!"}},null,null,null,null,365,{"$f":"IF(N372>#REF!,\"\",$L$7)","v":{"$error":"#REF!"}},{"$f":"IF(N372>=#REF!,\"\",IF(N372<=#REF!,#REF!,#REF!))","v":{"$error":"#REF!"}},{"$f":"IF(N372>#REF!,\"\",#REF!)","v":{"$error":"#REF!"}},null,null,null,null,365,{"$f":"IF(V372>#REF!,\"\",$T$7)","v":{"$error":"#REF!"}},{"$f":"IF(V372>=#REF!,\"\",IF(V372<=#REF!,#REF!,#REF!))","v":{"$error":"#REF!"}},{"$f":"IF(V372>#REF!,\"\",#REF!)","v":{"$error":"#REF!"}},null,null,null,null,null,null,null,365]
[366,{"$f":"IF(A373>=#REF!,\"\",IF(A373<=#REF!,#REF!,#REF!))","v":{"$error":"#REF!"}},{"$f":"IF(A373>=#REF!,\"\",IF(A373<=#REF!,#REF!,#REF!))","v":{"$error":"#REF!"}},{"$f":"IF(A373>#REF!,\"\",#REF!)","v":{"$error":"#REF!"}},null,366,{"$f":"IF(F373>=#REF!,\"\",IF(F373<=#REF!,#REF!,#REF!))","v":{"$error":"#REF!"}},{"$f":"IF(F373>=#REF!,\"\",IF(F373<=#REF!,#REF!,#REF!))","v":{"$error":"#REF!"}},{"$f":"IF(F373>#REF!,\"\",PMT(#REF!/12,#REF!,-#REF!))","v":{"$error":"#REF!"}},null,null,null,null,366,{"$f":"IF(N373>#REF!,\"\",$L$7)","v":{"$error":"#REF!"}},{"$f":"IF(N373>=#REF!,\"\",IF(N373<=#REF!,#REF!,#REF!))","v":{"$error":"#REF!"}},{"$f":"IF(N373>#REF!,\"\",#REF!)","v":{"$error":"#REF!"}},null,null,null,null,366,{"$f":"IF(V373>#REF!,\"\",$T$7)","v":{"$error":"#REF!"}},{"$f":"IF(V373>=#REF!,\"\",IF(V373<=#REF!,#REF!,#REF!))","v":{"$error":"#REF!"}},{"$f":"IF(V373>#REF!,\"\",#REF!)","v":{"$error":"#REF!"}},null,null,null,null,null,null,null,366]
[367,{"$f":"IF(A374>=#REF!,\"\",IF(A374<=#REF!,#REF!,#REF!))","v":{"$error":"#REF!"}},{"$f":"IF(A374>=#REF!,\"\",IF(A374<=#REF!,#REF!,#REF!))","v":{"$error":"#REF!"}},{"$f":"IF(A374>#REF!,\"\",#REF!)","v":{"$error":"#REF!"}},null,367,{"$f":"IF(F374>=#REF!,\"\",IF(F374<=#REF!,#REF!,#REF!))","v":{"$error":"#REF!"}},{"$f":"IF(F374>=#REF!,\"\",IF(F374<=#REF!,#REF!,#REF!))","v":{"$error":"#REF!"}},{"$f":"IF(F374>#REF!,\"\",PMT(#REF!/12,#REF!,-#REF!))","v":{"$error":"#REF!"}},null,null,null,null,367,{"$f":"IF(N374>#REF!,\"\",$L$7)","v":{"$error":"#REF!"}},{"$f":"IF(N374>=#REF!,\"\",IF(N374<=#REF!,#REF!,#REF!))","v":{"$error":"#REF!"}},{"$f":"IF(N374>#REF!,\"\",#REF!)","v":{"$error":"#REF!"}},null,null,null,null,367,{"$f":"IF(V374>#REF!,\"\",$T$7)","v":{"$error":"#REF!"}},{"$f":"IF(V374>=#REF!,\"\",IF(V374<=#REF!,#REF!,#REF!))","v":{"$error":"#REF!"}},{"$f":"IF(V374>#REF!,\"\",#REF!)","v":{"$error":"#REF!"}},null,null,null,null,null,null,null,367]
[368,{"$f":"IF(A375>=#REF!,\"\",IF(A375<=#REF!,#REF!,#REF!))","v":{"$error":"#REF!"}},{"$f":"IF(A375>=#REF!,\"\",IF(A375<=#REF!,#REF!,#REF!))","v":{"$error":"#REF!"}},{"$f":"IF(A375>#REF!,\"\",#REF!)","v":{"$error":"#REF!"}},null,368,{"$f":"IF(F375>=#REF!,\"\",IF(F375<=#REF!,#REF!,#REF!))","v":{"$error":"#REF!"}},{"$f":"IF(F375>=#REF!,\"\",IF(F375<=#REF!,#REF!,#REF!))","v":{"$error":"#REF!"}},{"$f":"IF(F375>#REF!,\"\",PMT(#REF!/12,#REF!,-#REF!))","v":{"$error":"#REF!"}},null,null,null,null,368,{"$f":"IF(N375>#REF!,\"\",$L$7)","v":{"$error":"#REF!"}},{"$f":"IF(N375>=#REF!,\"\",IF(N375<=#REF!,#REF!,#REF!))","v":{"$error":"#REF!"}},{"$f":"IF(N375>#REF!,\"\",#REF!)","v":{"$error":"#REF!"}},null,null,null,null,368,{"$f":"IF(V375>#REF!,\"\",$T$7)","v":{"$error":"#REF!"}},{"$f":"IF(V375>=#REF!,\"\",IF(V375<=#REF!,#REF!,#REF!))","v":{"$error":"#REF!"}},{"$f":"IF(V375>#REF!,\"\",#REF!)","v":{"$error":"#REF!"}},null,null,null,null,null,null,null,368]
[369,{"$f":"IF(A376>=#REF!,\"\",IF(A376<=#REF!,#REF!,#REF!))","v":{"$error":"#REF!"}},{"$f":"IF(A376>=#REF!,\"\",IF(A376<=#REF!,#REF!,#REF!))","v":{"$error":"#REF!"}},{"$f":"IF(A376>#REF!,\"\",#REF!)","v":{"$error":"#REF!"}},null,369,{"$f":"IF(F376>=#REF!,\"\",IF(F376<=#REF!,#REF!,#REF!))","v":{"$error":"#REF!"}},{"$f":"IF(F376>=#REF!,\"\",IF(F376<=#REF!,#REF!,#REF!))","v":{"$error":"#REF!"}},{"$f":"IF(F376>#REF!,\"\",PMT(#REF!/12,#REF!,-#REF!))","v":{"$error":"#REF!"}},null,null,null,null,369,{"$f":"IF(N376>#REF!,\"\",$L$7)","v":{"$error":"#REF!"}},{"$f":"IF(N376>=#REF!,\"\",IF(N376<=#REF!,#REF!,#REF!))","v":{"$error":"#REF!"}},{"$f":"IF(N376>#REF!,\"\",#REF!)","v":{"$error":"#REF!"}},null,null,null,null,369,{"$f":"IF(V376>#REF!,\"\",$T$7)","v":{"$error":"#REF!"}},{"$f":"IF(V376>=#REF!,\"\",IF(V376<=#REF!,#REF!,#REF!))","v":{"$error":"#REF!"}},{"$f":"IF(V376>#REF!,\"\",#REF!)","v":{"$error":"#REF!"}},null,null,null,null,null,null,null,369]
[370,{"$f":"IF(A377>=#REF!,\"\",IF(A377<=#REF!,#REF!,#REF!))","v":{"$error":"#REF!"}},{"$f":"IF(A377>=#REF!,\"\",IF(A377<=#REF!,#REF!,#REF!))","v":{"$error":"#REF!"}},{"$f":"IF(A377>#REF!,\"\",#REF!)","v":{"$error":"#REF!"}},null,370,{"$f":"IF(F377>=#REF!,\"\",IF(F377<=#REF!,#REF!,#REF!))","v":{"$error":"#REF!"}},{"$f":"IF(F377>=#REF!,\"\",IF(F377<=#REF!,#REF!,#REF!))","v":{"$error":"#REF!"}},{"$f":"IF(F377>#REF!,\"\",PMT(#REF!/12,#REF!,-#REF!))","v":{"$error":"#REF!"}},null,null,null,null,370,{"$f":"IF(N377>#REF!,\"\",$L$7)","v":{"$error":"#REF!"}},{"$f":"IF(N377>=#REF!,\"\",IF(N377<=#REF!,#REF!,#REF!))","v":{"$error":"#REF!"}},{"$f":"IF(N377>#REF!,\"\",#REF!)","v":{"$error":"#REF!"}},null,null,null,null,370,{"$f":"IF(V377>#REF!,\"\",$T$7)","v":{"$error":"#REF!"}},{"$f":"IF(V377>=#REF!,\"\",IF(V377<=#REF!,#REF!,#REF!))","v":{"$error":"#REF!"}},{"$f":"IF(V377>#REF!,\"\",#REF!)","v":{"$error":"#REF!"}},null,null,null,null,null,null,null,370]
[371,{"$f":"IF(A378>=#REF!,\"\",IF(A378<=#REF!,#REF!,#REF!))","v":{"$error":"#REF!"}},{"$f":"IF(A378>=#REF!,\"\",IF(A378<=#REF!,#REF!,#REF!))","v":{"$error":"#REF!"}},{"$f":"IF(A378>#REF!,\"\",#REF!)","v":{"$error":"#REF!"}},null,371,{"$f":"IF(F378>=#REF!,\"\",IF(F378<=#REF!,#REF!,#REF!))","v":{"$error":"#REF!"}},{"$f":"IF(F378>=#REF!,\"\",IF(F378<=#REF!,#REF!,#REF!))","v":{"$error":"#REF!"}},{"$f":"IF(F378>#REF!,\"\",PMT(#REF!/12,#REF!,-#REF!))","v":{"$error":"#REF!"}},null,null,null,null,371,{"$f":"IF(N378>#REF!,\"\",$L$7)","v":{"$error":"#REF!"}},{"$f":"IF(N378>=#REF!,\"\",IF(N378<=#REF!,#REF!,#REF!))","v":{"$error":"#REF!"}},{"$f":"IF(N378>#REF!,\"\",#REF!)","v":{"$error":"#REF!"}},null,null,null,null,371,{"$f":"IF(V378>#REF!,\"\",$T$7)","v":{"$error":"#REF!"}},{"$f":"IF(V378>=#REF!,\"\",IF(V378<=#REF!,#REF!,#REF!))","v":{"$error":"#REF!"}},{"$f":"IF(V378>#REF!,\"\",#REF!)","v":{"$error":"#REF!"}},null,null,null,null,null,null,null,371]
[372,{"$f":"IF(A379>=#REF!,\"\",IF(A379<=#REF!,#REF!,#REF!))","v":{"$error":"#REF!"}},{"$f":"IF(A379>=#REF!,\"\",IF(A379<=#REF!,#REF!,#REF!))","v":{"$error":"#REF!"}},{"$f":"IF(A379>#REF!,\"\",#REF!)","v":{"$error":"#REF!"}},null,372,{"$f":"IF(F379>=#REF!,\"\",IF(F379<=#REF!,#REF!,#REF!))","v":{"$error":"#REF!"}},{"$f":"IF(F379>=#REF!,\"\",IF(F379<=#REF!,#REF!,#REF!))","v":{"$error":"#REF!"}},{"$f":"IF(F379>#REF!,\"\",PMT(#REF!/12,#REF!,-#REF!))","v":{"$error":"#REF!"}},null,null,null,null,372,{"$f":"IF(N379>#REF!,\"\",$L$7)","v":{"$error":"#REF!"}},{"$f":"IF(N379>=#REF!,\"\",IF(N379<=#REF!,#REF!,#REF!))","v":{"$error":"#REF!"}},{"$f":"IF(N379>#REF!,\"\",#REF!)","v":{"$error":"#REF!"}},null,null,null,null,372,{"$f":"IF(V379>#REF!,\"\",$T$7)","v":{"$error":"#REF!"}},{"$f":"IF(V379>=#REF!,\"\",IF(V379<=#REF!,#REF!,#REF!))","v":{"$error":"#REF!"}},{"$f":"IF(V379>#REF!,\"\",#REF!)","v":{"$error":"#REF!"}},null,null,null,null,null,null,null,372]
[373,{"$f":"IF(A380>=#REF!,\"\",IF(A380<=#REF!,#REF!,#REF!))","v":{"$error":"#REF!"}},{"$f":"IF(A380>=#REF!,\"\",IF(A380<=#REF!,#REF!,#REF!))","v":{"$error":"#REF!"}},{"$f":"IF(A380>#REF!,\"\",#REF!)","v":{"$error":"#REF!"}},null,373,{"$f":"IF(F380>=#REF!,\"\",IF(F380<=#REF!,#REF!,#REF!))","v":{"$error":"#REF!"}},{"$f":"IF(F380>=#REF!,\"\",IF(F380<=#REF!,#REF!,#REF!))","v":{"$error":"#REF!"}},{"$f":"IF(F380>#REF!,\"\",PMT(#REF!/12,#REF!,-#REF!))","v":{"$error":"#REF!"}},null,null,null,null,373,{"$f":"IF(N380>#REF!,\"\",$L$7)","v":{"$error":"#REF!"}},{"$f":"IF(N380>=#REF!,\"\",IF(N380<=#REF!,#REF!,#REF!))","v":{"$error":"#REF!"}},{"$f":"IF(N380>#REF!,\"\",#REF!)","v":{"$error":"#REF!"}},null,null,null,null,373,{"$f":"IF(V380>#REF!,\"\",$T$7)","v":{"$error":"#REF!"}},{"$f":"IF(V380>=#REF!,\"\",IF(V380<=#REF!,#REF!,#REF!))","v":{"$error":"#REF!"}},{"$f":"IF(V380>#REF!,\"\",#REF!)","v":{"$error":"#REF!"}},null,null,null,null,null,null,null,373]
[374,{"$f":"IF(A381>=#REF!,\"\",IF(A381<=#REF!,#REF!,#REF!))","v":{"$error":"#REF!"}},{"$f":"IF(A381>=#REF!,\"\",IF(A381<=#REF!,#REF!,#REF!))","v":{"$error":"#REF!"}},{"$f":"IF(A381>#REF!,\"\",#REF!)","v":{"$error":"#REF!"}},null,374,{"$f":"IF(F381>=#REF!,\"\",IF(F381<=#REF!,#REF!,#REF!))","v":{"$error":"#REF!"}},{"$f":"IF(F381>=#REF!,\"\",IF(F381<=#REF!,#REF!,#REF!))","v":{"$error":"#REF!"}},{"$f":"IF(F381>#REF!,\"\",PMT(#REF!/12,#REF!,-#REF!))","v":{"$error":"#REF!"}},null,null,null,null,374,{"$f":"IF(N381>#REF!,\"\",$L$7)","v":{"$error":"#REF!"}},{"$f":"IF(N381>=#REF!,\"\",IF(N381<=#REF!,#REF!,#REF!))","v":{"$error":"#REF!"}},{"$f":"IF(N381>#REF!,\"\",#REF!)","v":{"$error":"#REF!"}},null,null,null,null,374,{"$f":"IF(V381>#REF!,\"\",$T$7)","v":{"$error":"#REF!"}},{"$f":"IF(V381>=#REF!,\"\",IF(V381<=#REF!,#REF!,#REF!))","v":{"$error":"#REF!"}},{"$f":"IF(V381>#REF!,\"\",#REF!)","v":{"$error":"#REF!"}},null,null,null,null,null,null,null,374]
[375,{"$f":"IF(A382>=#REF!,\"\",IF(A382<=#REF!,#REF!,#REF!))","v":{"$error":"#REF!"}},{"$f":"IF(A382>=#REF!,\"\",IF(A382<=#REF!,#REF!,#REF!))","v":{"$error":"#REF!"}},{"$f":"IF(A382>#REF!,\"\",#REF!)","v":{"$error":"#REF!"}},null,375,{"$f":"IF(F382>=#REF!,\"\",IF(F382<=#REF!,#REF!,#REF!))","v":{"$error":"#REF!"}},{"$f":"IF(F382>=#REF!,\"\",IF(F382<=#REF!,#REF!,#REF!))","v":{"$error":"#REF!"}},{"$f":"IF(F382>#REF!,\"\",PMT(#REF!/12,#REF!,-#REF!))","v":{"$error":"#REF!"}},null,null,null,null,375,{"$f":"IF(N382>#REF!,\"\",$L$7)","v":{"$error":"#REF!"}},{"$f":"IF(N382>=#REF!,\"\",IF(N382<=#REF!,#REF!,#REF!))","v":{"$error":"#REF!"}},{"$f":"IF(N382>#REF!,\"\",#REF!)","v":{"$error":"#REF!"}},null,null,null,null,375,{"$f":"IF(V382>#REF!,\"\",$T$7)","v":{"$error":"#REF!"}},{"$f":"IF(V382>=#REF!,\"\",IF(V382<=#REF!,#REF!,#REF!))","v":{"$error":"#REF!"}},{"$f":"IF(V382>#REF!,\"\",#REF!)","v":{"$error":"#REF!"}},null,null,null,null,null,null,null,375]
[376,{"$f":"IF(A383>=#REF!,\"\",IF(A383<=#REF!,#REF!,#REF!))","v":{"$error":"#REF!"}},{"$f":"IF(A383>=#REF!,\"\",IF(A383<=#REF!,#REF!,#REF!))","v":{"$error":"#REF!"}},{"$f":"IF(A383>#REF!,\"\",#REF!)","v":{"$error":"#REF!"}},null,376,{"$f":"IF(F383>=#REF!,\"\",IF(F383<=#REF!,#REF!,#REF!))","v":{"$error":"#REF!"}},{"$f":"IF(F383>=#REF!,\"\",IF(F383<=#REF!,#REF!,#REF!))","v":{"$error":"#REF!"}},{"$f":"IF(F383>#REF!,\"\",PMT(#REF!/12,#REF!,-#REF!))","v":{"$error":"#REF!"}},null,null,null,null,376,{"$f":"IF(N383>#REF!,\"\",$L$7)","v":{"$error":"#REF!"}},{"$f":"IF(N383>=#REF!,\"\",IF(N383<=#REF!,#REF!,#REF!))","v":{"$error":"#REF!"}},{"$f":"IF(N383>#REF!,\"\",#REF!)","v":{"$error":"#REF!"}},null,null,null,null,376,{"$f":"IF(V383>#REF!,\"\",$T$7)","v":{"$error":"#REF!"}},{"$f":"IF(V383>=#REF!,\"\",IF(V383<=#REF!,#REF!,#REF!))","v":{"$error":"#REF!"}},{"$f":"IF(V383>#REF!,\"\",#REF!)","v":{"$error":"#REF!"}},null,null,null,null,null,null,null,376]
[377,{"$f":"IF(A384>=#REF!,\"\",IF(A384<=#REF!,#REF!,#REF!))","v":{"$error":"#REF!"}},{"$f":"IF(A384>=#REF!,\"\",IF(A384<=#REF!,#REF!,#REF!))","v":{"$error":"#REF!"}},{"$f":"IF(A384>#REF!,\"\",#REF!)","v":{"$error":"#REF!"}},null,377,{"$f":"IF(F384>=#REF!,\"\",IF(F384<=#REF!,#REF!,#REF!))","v":{"$error":"#REF!"}},{"$f":"IF(F384>=#REF!,\"\",IF(F384<=#REF!,#REF!,#REF!))","v":{"$error":"#REF!"}},{"$f":"IF(F384>#REF!,\"\",PMT(#REF!/12,#REF!,-#REF!))","v":{"$error":"#REF!"}},null,null,null,null,377,{"$f":"IF(N384>#REF!,\"\",$L$7)","v":{"$error":"#REF!"}},{"$f":"IF(N384>=#REF!,\"\",IF(N384<=#REF!,#REF!,#REF!))","v":{"$error":"#REF!"}},{"$f":"IF(N384>#REF!,\"\",#REF!)","v":{"$error":"#REF!"}},null,null,null,null,377,{"$f":"IF(V384>#REF!,\"\",$T$7)","v":{"$error":"#REF!"}},{"$f":"IF(V384>=#REF!,\"\",IF(V384<=#REF!,#REF!,#REF!))","v":{"$error":"#REF!"}},{"$f":"IF(V384>#REF!,\"\",#REF!)","v":{"$error":"#REF!"}},null,null,null,null,null,null,null,377]
[378,{"$f":"IF(A385>=#REF!,\"\",IF(A385<=#REF!,#REF!,#REF!))","v":{"$error":"#REF!"}},{"$f":"IF(A385>=#REF!,\"\",IF(A385<=#REF!,#REF!,#REF!))","v":{"$error":"#REF!"}},{"$f":"IF(A385>#REF!,\"\",#REF!)","v":{"$error":"#REF!"}},null,378,{"$f":"IF(F385>=#REF!,\"\",IF(F385<=#REF!,#REF!,#REF!))","v":{"$error":"#REF!"}},{"$f":"IF(F385>=#REF!,\"\",IF(F385<=#REF!,#REF!,#REF!))","v":{"$error":"#REF!"}},{"$f":"IF(F385>#REF!,\"\",PMT(#REF!/12,#REF!,-#REF!))","v":{"$error":"#REF!"}},null,null,null,null,378,{"$f":"IF(N385>#REF!,\"\",$L$7)","v":{"$error":"#REF!"}},{"$f":"IF(N385>=#REF!,\"\",IF(N385<=#REF!,#REF!,#REF!))","v":{"$error":"#REF!"}},{"$f":"IF(N385>#REF!,\"\",#REF!)","v":{"$error":"#REF!"}},null,null,null,null,378,{"$f":"IF(V385>#REF!,\"\",$T$7)","v":{"$error":"#REF!"}},{"$f":"IF(V385>=#REF!,\"\",IF(V385<=#REF!,#REF!,#REF!))","v":{"$error":"#REF!"}},{"$f":"IF(V385>#REF!,\"\",#REF!)","v":{"$error":"#REF!"}},null,null,null,null,null,null,null,378]
[379,{"$f":"IF(A386>=#REF!,\"\",IF(A386<=#REF!,#REF!,#REF!))","v":{"$error":"#REF!"}},{"$f":"IF(A386>=#REF!,\"\",IF(A386<=#REF!,#REF!,#REF!))","v":{"$error":"#REF!"}},{"$f":"IF(A386>#REF!,\"\",#REF!)","v":{"$error":"#REF!"}},null,379,{"$f":"IF(F386>=#REF!,\"\",IF(F386<=#REF!,#REF!,#REF!))","v":{"$error":"#REF!"}},{"$f":"IF(F386>=#REF!,\"\",IF(F386<=#REF!,#REF!,#REF!))","v":{"$error":"#REF!"}},{"$f":"IF(F386>#REF!,\"\",PMT(#REF!/12,#REF!,-#REF!))","v":{"$error":"#REF!"}},null,null,null,null,379,{"$f":"IF(N386>#REF!,\"\",$L$7)","v":{"$error":"#REF!"}},{"$f":"IF(N386>=#REF!,\"\",IF(N386<=#REF!,#REF!,#REF!))","v":{"$error":"#REF!"}},{"$f":"IF(N386>#REF!,\"\",#REF!)","v":{"$error":"#REF!"}},null,null,null,null,379,{"$f":"IF(V386>#REF!,\"\",$T$7)","v":{"$error":"#REF!"}},{"$f":"IF(V386>=#REF!,\"\",IF(V386<=#REF!,#REF!,#REF!))","v":{"$error":"#REF!"}},{"$f":"IF(V386>#REF!,\"\",#REF!)","v":{"$error":"#REF!"}},null,null,null,null,null,null,null,379]
[380,{"$f":"IF(A387>=#REF!,\"\",IF(A387<=#REF!,#REF!,#REF!))","v":{"$error":"#REF!"}},{"$f":"IF(A387>=#REF!,\"\",IF(A387<=#REF!,#REF!,#REF!))","v":{"$error":"#REF!"}},{"$f":"IF(A387>#REF!,\"\",#REF!)","v":{"$error":"#REF!"}},null,380,{"$f":"IF(F387>=#REF!,\"\",IF(F387<=#REF!,#REF!,#REF!))","v":{"$error":"#REF!"}},{"$f":"IF(F387>=#REF!,\"\",IF(F387<=#REF!,#REF!,#REF!))","v":{"$error":"#REF!"}},{"$f":"IF(F387>#REF!,\"\",PMT(#REF!/12,#REF!,-#REF!))","v":{"$error":"#REF!"}},null,null,null,null,380,{"$f":"IF(N387>#REF!,\"\",$L$7)","v":{"$error":"#REF!"}},{"$f":"IF(N387>=#REF!,\"\",IF(N387<=#REF!,#REF!,#REF!))","v":{"$error":"#REF!"}},{"$f":"IF(N387>#REF!,\"\",#REF!)","v":{"$error":"#REF!"}},null,null,null,null,380,{"$f":"IF(V387>#REF!,\"\",$T$7)","v":{"$error":"#REF!"}},{"$f":"IF(V387>=#REF!,\"\",IF(V387<=#REF!,#REF!,#REF!))","v":{"$error":"#REF!"}},{"$f":"IF(V387>#REF!,\"\",#REF!)","v":{"$error":"#REF!"}},null,null,null,null,null,null,null,380]
[381,{"$f":"IF(A388>=#REF!,\"\",IF(A388<=#REF!,#REF!,#REF!))","v":{"$error":"#REF!"}},{"$f":"IF(A388>=#REF!,\"\",IF(A388<=#REF!,#REF!,#REF!))","v":{"$error":"#REF!"}},{"$f":"IF(A388>#REF!,\"\",#REF!)","v":{"$error":"#REF!"}},null,381,{"$f":"IF(F388>=#REF!,\"\",IF(F388<=#REF!,#REF!,#REF!))","v":{"$error":"#REF!"}},{"$f":"IF(F388>=#REF!,\"\",IF(F388<=#REF!,#REF!,#REF!))","v":{"$error":"#REF!"}},{"$f":"IF(F388>#REF!,\"\",PMT(#REF!/12,#REF!,-#REF!))","v":{"$error":"#REF!"}},null,null,null,null,381,{"$f":"IF(N388>#REF!,\"\",$L$7)","v":{"$error":"#REF!"}},{"$f":"IF(N388>=#REF!,\"\",IF(N388<=#REF!,#REF!,#REF!))","v":{"$error":"#REF!"}},{"$f":"IF(N388>#REF!,\"\",#REF!)","v":{"$error":"#REF!"}},null,null,null,null,381,{"$f":"IF(V388>#REF!,\"\",$T$7)","v":{"$error":"#REF!"}},{"$f":"IF(V388>=#REF!,\"\",IF(V388<=#REF!,#REF!,#REF!))","v":{"$error":"#REF!"}},{"$f":"IF(V388>#REF!,\"\",#REF!)","v":{"$error":"#REF!"}},null,null,null,null,null,null,null,381]
[382,{"$f":"IF(A389>=#REF!,\"\",IF(A389<=#REF!,#REF!,#REF!))","v":{"$error":"#REF!"}},{"$f":"IF(A389>=#REF!,\"\",IF(A389<=#REF!,#REF!,#REF!))","v":{"$error":"#REF!"}},{"$f":"IF(A389>#REF!,\"\",#REF!)","v":{"$error":"#REF!"}},null,382,{"$f":"IF(F389>=#REF!,\"\",IF(F389<=#REF!,#REF!,#REF!))","v":{"$error":"#REF!"}},{"$f":"IF(F389>=#REF!,\"\",IF(F389<=#REF!,#REF!,#REF!))","v":{"$error":"#REF!"}},{"$f":"IF(F389>#REF!,\"\",PMT(#REF!/12,#REF!,-#REF!))","v":{"$error":"#REF!"}},null,null,null,null,382,{"$f":"IF(N389>#REF!,\"\",$L$7)","v":{"$error":"#REF!"}},{"$f":"IF(N389>=#REF!,\"\",IF(N389<=#REF!,#REF!,#REF!))","v":{"$error":"#REF!"}},{"$f":"IF(N389>#REF!,\"\",#REF!)","v":{"$error":"#REF!"}},null,null,null,null,382,{"$f":"IF(V389>#REF!,\"\",$T$7)","v":{"$error":"#REF!"}},{"$f":"IF(V389>=#REF!,\"\",IF(V389<=#REF!,#REF!,#REF!))","v":{"$error":"#REF!"}},{"$f":"IF(V389>#REF!,\"\",#REF!)","v":{"$error":"#REF!"}},null,null,null,null,null,null,null,382]
[383,{"$f":"IF(A390>=#REF!,\"\",IF(A390<=#REF!,#REF!,#REF!))","v":{"$error":"#REF!"}},{"$f":"IF(A390>=#REF!,\"\",IF(A390<=#REF!,#REF!,#REF!))","v":{"$error":"#REF!"}},{"$f":"IF(A390>#REF!,\"\",#REF!)","v":{"$error":"#REF!"}},null,383,{"$f":"IF(F390>=#REF!,\"\",IF(F390<=#REF!,#REF!,#REF!))","v":{"$error":"#REF!"}},{"$f":"IF(F390>=#REF!,\"\",IF(F390<=#REF!,#REF!,#REF!))","v":{"$error":"#REF!"}},{"$f":"IF(F390>#REF!,\"\",PMT(#REF!/12,#REF!,-#REF!))","v":{"$error":"#REF!"}},null,null,null,null,383,{"$f":"IF(N390>#REF!,\"\",$L$7)","v":{"$error":"#REF!"}},{"$f":"IF(N390>=#REF!,\"\",IF(N390<=#REF!,#REF!,#REF!))","v":{"$error":"#REF!"}},{"$f":"IF(N390>#REF!,\"\",#REF!)","v":{"$error":"#REF!"}},null,null,null,null,383,{"$f":"IF(V390>#REF!,\"\",$T$7)","v":{"$error":"#REF!"}},{"$f":"IF(V390>=#REF!,\"\",IF(V390<=#REF!,#REF!,#REF!))","v":{"$error":"#REF!"}},{"$f":"IF(V390>#REF!,\"\",#REF!)","v":{"$error":"#REF!"}},null,null,null,null,null,null,null,383]
[384,{"$f":"IF(A391>=#REF!,\"\",IF(A391<=#REF!,#REF!,#REF!))","v":{"$error":"#REF!"}},{"$f":"IF(A391>=#REF!,\"\",IF(A391<=#REF!,#REF!,#REF!))","v":{"$error":"#REF!"}},{"$f":"IF(A391>#REF!,\"\",#REF!)","v":{"$error":"#REF!"}},null,384,{"$f":"IF(F391>=#REF!,\"\",IF(F391<=#REF!,#REF!,#REF!))","v":{"$error":"#REF!"}},{"$f":"IF(F391>=#REF!,\"\",IF(F391<=#REF!,#REF!,#REF!))","v":{"$error":"#REF!"}},{"$f":"IF(F391>#REF!,\"\",PMT(#REF!/12,#REF!,-#REF!))","v":{"$error":"#REF!"}},null,null,null,null,384,{"$f":"IF(N391>#REF!,\"\",$L$7)","v":{"$error":"#REF!"}},{"$f":"IF(N391>=#REF!,\"\",IF(N391<=#REF!,#REF!,#REF!))","v":{"$error":"#REF!"}},{"$f":"IF(N391>#REF!,\"\",#REF!)","v":{"$error":"#REF!"}},null,null,null,null,384,{"$f":"IF(V391>#REF!,\"\",$T$7)","v":{"$error":"#REF!"}},{"$f":"IF(V391>=#REF!,\"\",IF(V391<=#REF!,#REF!,#REF!))","v":{"$error":"#REF!"}},{"$f":"IF(V391>#REF!,\"\",#REF!)","v":{"$error":"#REF!"}},null,null,null,null,null,null,null,384]
[385,{"$f":"IF(A392>=#REF!,\"\",IF(A392<=#REF!,#REF!,#REF!))","v":{"$error":"#REF!"}},{"$f":"IF(A392>=#REF!,\"\",IF(A392<=#REF!,#REF!,#REF!))","v":{"$error":"#REF!"}},{"$f":"IF(A392>#REF!,\"\",#REF!)","v":{"$error":"#REF!"}},null,385,{"$f":"IF(F392>=#REF!,\"\",IF(F392<=#REF!,#REF!,#REF!))","v":{"$error":"#REF!"}},{"$f":"IF(F392>=#REF!,\"\",IF(F392<=#REF!,#REF!,#REF!))","v":{"$error":"#REF!"}},{"$f":"IF(F392>#REF!,\"\",PMT(#REF!/12,#REF!,-#REF!))","v":{"$error":"#REF!"}},null,null,null,null,385,{"$f":"IF(N392>#REF!,\"\",$L$7)","v":{"$error":"#REF!"}},{"$f":"IF(N392>=#REF!,\"\",IF(N392<=#REF!,#REF!,#REF!))","v":{"$error":"#REF!"}},{"$f":"IF(N392>#REF!,\"\",#REF!)","v":{"$error":"#REF!"}},null,null,null,null,385,{"$f":"IF(V392>#REF!,\"\",$T$7)","v":{"$error":"#REF!"}},{"$f":"IF(V392>=#REF!,\"\",IF(V392<=#REF!,#REF!,#REF!))","v":{"$error":"#REF!"}},{"$f":"IF(V392>#REF!,\"\",#REF!)","v":{"$error":"#REF!"}},null,null,null,null,null,null,null,385]
[386,{"$f":"IF(A393>=#REF!,\"\",IF(A393<=#REF!,#REF!,#REF!))","v":{"$error":"#REF!"}},{"$f":"IF(A393>=#REF!,\"\",IF(A393<=#REF!,#REF!,#REF!))","v":{"$error":"#REF!"}},{"$f":"IF(A393>#REF!,\"\",#REF!)","v":{"$error":"#REF!"}},null,386,{"$f":"IF(F393>=#REF!,\"\",IF(F393<=#REF!,#REF!,#REF!))","v":{"$error":"#REF!"}},{"$f":"IF(F393>=#REF!,\"\",IF(F393<=#REF!,#REF!,#REF!))","v":{"$error":"#REF!"}},{"$f":"IF(F393>#REF!,\"\",PMT(#REF!/12,#REF!,-#REF!))","v":{"$error":"#REF!"}},null,null,null,null,386,{"$f":"IF(N393>#REF!,\"\",$L$7)","v":{"$error":"#REF!"}},{"$f":"IF(N393>=#REF!,\"\",IF(N393<=#REF!,#REF!,#REF!))","v":{"$error":"#REF!"}},{"$f":"IF(N393>#REF!,\"\",#REF!)","v":{"$error":"#REF!"}},null,null,null,null,386,{"$f":"IF(V393>#REF!,\"\",$T$7)","v":{"$error":"#REF!"}},{"$f":"IF(V393>=#REF!,\"\",IF(V393<=#REF!,#REF!,#REF!))","v":{"$error":"#REF!"}},{"$f":"IF(V393>#REF!,\"\",#REF!)","v":{"$error":"#REF!"}},null,null,null,null,null,null,null,386]
[387,{"$f":"IF(A394>=#REF!,\"\",IF(A394<=#REF!,#REF!,#REF!))","v":{"$error":"#REF!"}},{"$f":"IF(A394>=#REF!,\"\",IF(A394<=#REF!,#REF!,#REF!))","v":{"$error":"#REF!"}},{"$f":"IF(A394>#REF!,\"\",#REF!)","v":{"$error":"#REF!"}},null,387,{"$f":"IF(F394>=#REF!,\"\",IF(F394<=#REF!,#REF!,#REF!))","v":{"$error":"#REF!"}},{"$f":"IF(F394>=#REF!,\"\",IF(F394<=#REF!,#REF!,#REF!))","v":{"$error":"#REF!"}},{"$f":"IF(F394>#REF!,\"\",PMT(#REF!/12,#REF!,-#REF!))","v":{"$error":"#REF!"}},null,null,null,null,387,{"$f":"IF(N394>#REF!,\"\",$L$7)","v":{"$error":"#REF!"}},{"$f":"IF(N394>=#REF!,\"\",IF(N394<=#REF!,#REF!,#REF!))","v":{"$error":"#REF!"}},{"$f":"IF(N394>#REF!,\"\",#REF!)","v":{"$error":"#REF!"}},null,null,null,null,387,{"$f":"IF(V394>#REF!,\"\",$T$7)","v":{"$error":"#REF!"}},{"$f":"IF(V394>=#REF!,\"\",IF(V394<=#REF!,#REF!,#REF!))","v":{"$error":"#REF!"}},{"$f":"IF(V394>#REF!,\"\",#REF!)","v":{"$error":"#REF!"}},null,null,null,null,null,null,null,387]
[388,{"$f":"IF(A395>=#REF!,\"\",IF(A395<=#REF!,#REF!,#REF!))","v":{"$error":"#REF!"}},{"$f":"IF(A395>=#REF!,\"\",IF(A395<=#REF!,#REF!,#REF!))","v":{"$error":"#REF!"}},{"$f":"IF(A395>#REF!,\"\",#REF!)","v":{"$error":"#REF!"}},null,388,{"$f":"IF(F395>=#REF!,\"\",IF(F395<=#REF!,#REF!,#REF!))","v":{"$error":"#REF!"}},{"$f":"IF(F395>=#REF!,\"\",IF(F395<=#REF!,#REF!,#REF!))","v":{"$error":"#REF!"}},{"$f":"IF(F395>#REF!,\"\",PMT(#REF!/12,#REF!,-#REF!))","v":{"$error":"#REF!"}},null,null,null,null,388,{"$f":"IF(N395>#REF!,\"\",$L$7)","v":{"$error":"#REF!"}},{"$f":"IF(N395>=#REF!,\"\",IF(N395<=#REF!,#REF!,#REF!))","v":{"$error":"#REF!"}},{"$f":"IF(N395>#REF!,\"\",#REF!)","v":{"$error":"#REF!"}},null,null,null,null,388,{"$f":"IF(V395>#REF!,\"\",$T$7)","v":{"$error":"#REF!"}},{"$f":"IF(V395>=#REF!,\"\",IF(V395<=#REF!,#REF!,#REF!))","v":{"$error":"#REF!"}},{"$f":"IF(V395>#REF!,\"\",#REF!)","v":{"$error":"#REF!"}},null,null,null,null,null,null,null,388]
[389,{"$f":"IF(A396>=#REF!,\"\",IF(A396<=#REF!,#REF!,#REF!))","v":{"$error":"#REF!"}},{"$f":"IF(A396>=#REF!,\"\",IF(A396<=#REF!,#REF!,#REF!))","v":{"$error":"#REF!"}},{"$f":"IF(A396>#REF!,\"\",#REF!)","v":{"$error":"#REF!"}},null,389,{"$f":"IF(F396>=#REF!,\"\",IF(F396<=#REF!,#REF!,#REF!))","v":{"$error":"#REF!"}},{"$f":"IF(F396>=#REF!,\"\",IF(F396<=#REF!,#REF!,#REF!))","v":{"$error":"#REF!"}},{"$f":"IF(F396>#REF!,\"\",PMT(#REF!/12,#REF!,-#REF!))","v":{"$error":"#REF!"}},null,null,null,null,389,{"$f":"IF(N396>#REF!,\"\",$L$7)","v":{"$error":"#REF!"}},{"$f":"IF(N396>=#REF!,\"\",IF(N396<=#REF!,#REF!,#REF!))","v":{"$error":"#REF!"}},{"$f":"IF(N396>#REF!,\"\",#REF!)","v":{"$error":"#REF!"}},null,null,null,null,389,{"$f":"IF(V396>#REF!,\"\",$T$7)","v":{"$error":"#REF!"}},{"$f":"IF(V396>=#REF!,\"\",IF(V396<=#REF!,#REF!,#REF!))","v":{"$error":"#REF!"}},{"$f":"IF(V396>#REF!,\"\",#REF!)","v":{"$error":"#REF!"}},null,null,null,null,null,null,null,389]
[390,{"$f":"IF(A397>=#REF!,\"\",IF(A397<=#REF!,#REF!,#REF!))","v":{"$error":"#REF!"}},{"$f":"IF(A397>=#REF!,\"\",IF(A397<=#REF!,#REF!,#REF!))","v":{"$error":"#REF!"}},{"$f":"IF(A397>#REF!,\"\",#REF!)","v":{"$error":"#REF!"}},null,390,{"$f":"IF(F397>=#REF!,\"\",IF(F397<=#REF!,#REF!,#REF!))","v":{"$error":"#REF!"}},{"$f":"IF(F397>=#REF!,\"\",IF(F397<=#REF!,#REF!,#REF!))","v":{"$error":"#REF!"}},{"$f":"IF(F397>#REF!,\"\",PMT(#REF!/12,#REF!,-#REF!))","v":{"$error":"#REF!"}},null,null,null,null,390,{"$f":"IF(N397>#REF!,\"\",$L$7)","v":{"$error":"#REF!"}},{"$f":"IF(N397>=#REF!,\"\",IF(N397<=#REF!,#REF!,#REF!))","v":{"$error":"#REF!"}},{"$f":"IF(N397>#REF!,\"\",#REF!)","v":{"$error":"#REF!"}},null,null,null,null,390,{"$f":"IF(V397>#REF!,\"\",$T$7)","v":{"$error":"#REF!"}},{"$f":"IF(V397>=#REF!,\"\",IF(V397<=#REF!,#REF!,#REF!))","v":{"$error":"#REF!"}},{"$f":"IF(V397>#REF!,\"\",#REF!)","v":{"$error":"#REF!"}},null,null,null,null,null,null,null,390]
[391,{"$f":"IF(A398>=#REF!,\"\",IF(A398<=#REF!,#REF!,#REF!))","v":{"$error":"#REF!"}},{"$f":"IF(A398>=#REF!,\"\",IF(A398<=#REF!,#REF!,#REF!))","v":{"$error":"#REF!"}},{"$f":"IF(A398>#REF!,\"\",#REF!)","v":{"$error":"#REF!"}},null,391,{"$f":"IF(F398>=#REF!,\"\",IF(F398<=#REF!,#REF!,#REF!))","v":{"$error":"#REF!"}},{"$f":"IF(F398>=#REF!,\"\",IF(F398<=#REF!,#REF!,#REF!))","v":{"$error":"#REF!"}},{"$f":"IF(F398>#REF!,\"\",PMT(#REF!/12,#REF!,-#REF!))","v":{"$error":"#REF!"}},null,null,null,null,391,{"$f":"IF(N398>#REF!,\"\",$L$7)","v":{"$error":"#REF!"}},{"$f":"IF(N398>=#REF!,\"\",IF(N398<=#REF!,#REF!,#REF!))","v":{"$error":"#REF!"}},{"$f":"IF(N398>#REF!,\"\",#REF!)","v":{"$error":"#REF!"}},null,null,null,null,391,{"$f":"IF(V398>#REF!,\"\",$T$7)","v":{"$error":"#REF!"}},{"$f":"IF(V398>=#REF!,\"\",IF(V398<=#REF!,#REF!,#REF!))","v":{"$error":"#REF!"}},{"$f":"IF(V398>#REF!,\"\",#REF!)","v":{"$error":"#REF!"}},null,null,null,null,null,null,null,391]
[392,{"$f":"IF(A399>=#REF!,\"\",IF(A399<=#REF!,#REF!,#REF!))","v":{"$error":"#REF!"}},{"$f":"IF(A399>=#REF!,\"\",IF(A399<=#REF!,#REF!,#REF!))","v":{"$error":"#REF!"}},{"$f":"IF(A399>#REF!,\"\",#REF!)","v":{"$error":"#REF!"}},null,392,{"$f":"IF(F399>=#REF!,\"\",IF(F399<=#REF!,#REF!,#REF!))","v":{"$error":"#REF!"}},{"$f":"IF(F399>=#REF!,\"\",IF(F399<=#REF!,#REF!,#REF!))","v":{"$error":"#REF!"}},{"$f":"IF(F399>#REF!,\"\",PMT(#REF!/12,#REF!,-#REF!))","v":{"$error":"#REF!"}},null,null,null,null,392,{"$f":"IF(N399>#REF!,\"\",$L$7)","v":{"$error":"#REF!"}},{"$f":"IF(N399>=#REF!,\"\",IF(N399<=#REF!,#REF!,#REF!))","v":{"$error":"#REF!"}},{"$f":"IF(N399>#REF!,\"\",#REF!)","v":{"$error":"#REF!"}},null,null,null,null,392,{"$f":"IF(V399>#REF!,\"\",$T$7)","v":{"$error":"#REF!"}},{"$f":"IF(V399>=#REF!,\"\",IF(V399<=#REF!,#REF!,#REF!))","v":{"$error":"#REF!"}},{"$f":"IF(V399>#REF!,\"\",#REF!)","v":{"$error":"#REF!"}},null,null,null,null,null,null,null,392]
[393,{"$f":"IF(A400>=#REF!,\"\",IF(A400<=#REF!,#REF!,#REF!))","v":{"$error":"#REF!"}},{"$f":"IF(A400>=#REF!,\"\",IF(A400<=#REF!,#REF!,#REF!))","v":{"$error":"#REF!"}},{"$f":"IF(A400>#REF!,\"\",#REF!)","v":{"$error":"#REF!"}},null,393,{"$f":"IF(F400>=#REF!,\"\",IF(F400<=#REF!,#REF!,#REF!))","v":{"$error":"#REF!"}},{"$f":"IF(F400>=#REF!,\"\",IF(F400<=#REF!,#REF!,#REF!))","v":{"$error":"#REF!"}},{"$f":"IF(F400>#REF!,\"\",PMT(#REF!/12,#REF!,-#REF!))","v":{"$error":"#REF!"}},null,null,null,null,393,{"$f":"IF(N400>#REF!,\"\",$L$7)","v":{"$error":"#REF!"}},{"$f":"IF(N400>=#REF!,\"\",IF(N400<=#REF!,#REF!,#REF!))","v":{"$error":"#REF!"}},{"$f":"IF(N400>#REF!,\"\",#REF!)","v":{"$error":"#REF!"}},null,null,null,null,393,{"$f":"IF(V400>#REF!,\"\",$T$7)","v":{"$error":"#REF!"}},{"$f":"IF(V400>=#REF!,\"\",IF(V400<=#REF!,#REF!,#REF!))","v":{"$error":"#REF!"}},{"$f":"IF(V400>#REF!,\"\",#REF!)","v":{"$error":"#REF!"}},null,null,null,null,null,null,null,393]
[394,{"$f":"IF(A401>=#REF!,\"\",IF(A401<=#REF!,#REF!,#REF!))","v":{"$error":"#REF!"}},{"$f":"IF(A401>=#REF!,\"\",IF(A401<=#REF!,#REF!,#REF!))","v":{"$error":"#REF!"}},{"$f":"IF(A401>#REF!,\"\",#REF!)","v":{"$error":"#REF!"}},null,394,{"$f":"IF(F401>=#REF!,\"\",IF(F401<=#REF!,#REF!,#REF!))","v":{"$error":"#REF!"}},{"$f":"IF(F401>=#REF!,\"\",IF(F401<=#REF!,#REF!,#REF!))","v":{"$error":"#REF!"}},{"$f":"IF(F401>#REF!,\"\",PMT(#REF!/12,#REF!,-#REF!))","v":{"$error":"#REF!"}},null,null,null,null,394,{"$f":"IF(N401>#REF!,\"\",$L$7)","v":{"$error":"#REF!"}},{"$f":"IF(N401>=#REF!,\"\",IF(N401<=#REF!,#REF!,#REF!))","v":{"$error":"#REF!"}},{"$f":"IF(N401>#REF!,\"\",#REF!)","v":{"$error":"#REF!"}},null,null,null,null,394,{"$f":"IF(V401>#REF!,\"\",$T$7)","v":{"$error":"#REF!"}},{"$f":"IF(V401>=#REF!,\"\",IF(V401<=#REF!,#REF!,#REF!))","v":{"$error":"#REF!"}},{"$f":"IF(V401>#REF!,\"\",#REF!)","v":{"$error":"#REF!"}},null,null,null,null,null,null,null,394]
[395,{"$f":"IF(A402>=#REF!,\"\",IF(A402<=#REF!,#REF!,#REF!))","v":{"$error":"#REF!"}},{"$f":"IF(A402>=#REF!,\"\",IF(A402<=#REF!,#REF!,#REF!))","v":{"$error":"#REF!"}},{"$f":"IF(A402>#REF!,\"\",#REF!)","v":{"$error":"#REF!"}},null,395,{"$f":"IF(F402>=#REF!,\"\",IF(F402<=#REF!,#REF!,#REF!))","v":{"$error":"#REF!"}},{"$f":"IF(F402>=#REF!,\"\",IF(F402<=#REF!,#REF!,#REF!))","v":{"$error":"#REF!"}},{"$f":"IF(F402>#REF!,\"\",PMT(#REF!/12,#REF!,-#REF!))","v":{"$error":"#REF!"}},null,null,null,null,395,{"$f":"IF(N402>#REF!,\"\",$L$7)","v":{"$error":"#REF!"}},{"$f":"IF(N402>=#REF!,\"\",IF(N402<=#REF!,#REF!,#REF!))","v":{"$error":"#REF!"}},{"$f":"IF(N402>#REF!,\"\",#REF!)","v":{"$error":"#REF!"}},null,null,null,null,395,{"$f":"IF(V402>#REF!,\"\",$T$7)","v":{"$error":"#REF!"}},{"$f":"IF(V402>=#REF!,\"\",IF(V402<=#REF!,#REF!,#REF!))","v":{"$error":"#REF!"}},{"$f":"IF(V402>#REF!,\"\",#REF!)","v":{"$error":"#REF!"}},null,null,null,null,null,null,null,395]
[396,{"$f":"IF(A403>=#REF!,\"\",IF(A403<=#REF!,#REF!,#REF!))","v":{"$error":"#REF!"}},{"$f":"IF(A403>=#REF!,\"\",IF(A403<=#REF!,#REF!,#REF!))","v":{"$error":"#REF!"}},{"$f":"IF(A403>#REF!,\"\",#REF!)","v":{"$error":"#REF!"}},null,396,{"$f":"IF(F403>=#REF!,\"\",IF(F403<=#REF!,#REF!,#REF!))","v":{"$error":"#REF!"}},{"$f":"IF(F403>=#REF!,\"\",IF(F403<=#REF!,#REF!,#REF!))","v":{"$error":"#REF!"}},{"$f":"IF(F403>#REF!,\"\",PMT(#REF!/12,#REF!,-#REF!))","v":{"$error":"#REF!"}},null,null,null,null,396,{"$f":"IF(N403>#REF!,\"\",$L$7)","v":{"$error":"#REF!"}},{"$f":"IF(N403>=#REF!,\"\",IF(N403<=#REF!,#REF!,#REF!))","v":{"$error":"#REF!"}},{"$f":"IF(N403>#REF!,\"\",#REF!)","v":{"$error":"#REF!"}},null,null,null,null,396,{"$f":"IF(V403>#REF!,\"\",$T$7)","v":{"$error":"#REF!"}},{"$f":"IF(V403>=#REF!,\"\",IF(V403<=#REF!,#REF!,#REF!))","v":{"$error":"#REF!"}},{"$f":"IF(V403>#REF!,\"\",#REF!)","v":{"$error":"#REF!"}},null,null,null,null,null,null,null,396]
[397,{"$f":"IF(A404>=#REF!,\"\",IF(A404<=#REF!,#REF!,#REF!))","v":{"$error":"#REF!"}},{"$f":"IF(A404>=#REF!,\"\",IF(A404<=#REF!,#REF!,#REF!))","v":{"$error":"#REF!"}},{"$f":"IF(A404>#REF!,\"\",#REF!)","v":{"$error":"#REF!"}},null,397,{"$f":"IF(F404>=#REF!,\"\",IF(F404<=#REF!,#REF!,#REF!))","v":{"$error":"#REF!"}},{"$f":"IF(F404>=#REF!,\"\",IF(F404<=#REF!,#REF!,#REF!))","v":{"$error":"#REF!"}},{"$f":"IF(F404>#REF!,\"\",PMT(#REF!/12,#REF!,-#REF!))","v":{"$error":"#REF!"}},null,null,null,null,397,{"$f":"IF(N404>#REF!,\"\",$L$7)","v":{"$error":"#REF!"}},{"$f":"IF(N404>=#REF!,\"\",IF(N404<=#REF!,#REF!,#REF!))","v":{"$error":"#REF!"}},{"$f":"IF(N404>#REF!,\"\",#REF!)","v":{"$error":"#REF!"}},null,null,null,null,397,{"$f":"IF(V404>#REF!,\"\",$T$7)","v":{"$error":"#REF!"}},{"$f":"IF(V404>=#REF!,\"\",IF(V404<=#REF!,#REF!,#REF!))","v":{"$error":"#REF!"}},{"$f":"IF(V404>#REF!,\"\",#REF!)","v":{"$error":"#REF!"}},null,null,null,null,null,null,null,397]
[398,{"$f":"IF(A405>=#REF!,\"\",IF(A405<=#REF!,#REF!,#REF!))","v":{"$error":"#REF!"}},{"$f":"IF(A405>=#REF!,\"\",IF(A405<=#REF!,#REF!,#REF!))","v":{"$error":"#REF!"}},{"$f":"IF(A405>#REF!,\"\",#REF!)","v":{"$error":"#REF!"}},null,398,{"$f":"IF(F405>=#REF!,\"\",IF(F405<=#REF!,#REF!,#REF!))","v":{"$error":"#REF!"}},{"$f":"IF(F405>=#REF!,\"\",IF(F405<=#REF!,#REF!,#REF!))","v":{"$error":"#REF!"}},{"$f":"IF(F405>#REF!,\"\",PMT(#REF!/12,#REF!,-#REF!))","v":{"$error":"#REF!"}},null,null,null,null,398,{"$f":"IF(N405>#REF!,\"\",$L$7)","v":{"$error":"#REF!"}},{"$f":"IF(N405>=#REF!,\"\",IF(N405<=#REF!,#REF!,#REF!))","v":{"$error":"#REF!"}},{"$f":"IF(N405>#REF!,\"\",#REF!)","v":{"$error":"#REF!"}},null,null,null,null,398,{"$f":"IF(V405>#REF!,\"\",$T$7)","v":{"$error":"#REF!"}},{"$f":"IF(V405>=#REF!,\"\",IF(V405<=#REF!,#REF!,#REF!))","v":{"$error":"#REF!"}},{"$f":"IF(V405>#REF!,\"\",#REF!)","v":{"$error":"#REF!"}},null,null,null,null,null,null,null,398]
[399,{"$f":"IF(A406>=#REF!,\"\",IF(A406<=#REF!,#REF!,#REF!))","v":{"$error":"#REF!"}},{"$f":"IF(A406>=#REF!,\"\",IF(A406<=#REF!,#REF!,#REF!))","v":{"$error":"#REF!"}},{"$f":"IF(A406>#REF!,\"\",#REF!)","v":{"$error":"#REF!"}},null,399,{"$f":"IF(F406>=#REF!,\"\",IF(F406<=#REF!,#REF!,#REF!))","v":{"$error":"#REF!"}},{"$f":"IF(F406>=#REF!,\"\",IF(F406<=#REF!,#REF!,#REF!))","v":{"$error":"#REF!"}},{"$f":"IF(F406>#REF!,\"\",PMT(#REF!/12,#REF!,-#REF!))","v":{"$error":"#REF!"}},null,null,null,null,399,{"$f":"IF(N406>#REF!,\"\",$L$7)","v":{"$error":"#REF!"}},{"$f":"IF(N406>=#REF!,\"\",IF(N406<=#REF!,#REF!,#REF!))","v":{"$error":"#REF!"}},{"$f":"IF(N406>#REF!,\"\",#REF!)","v":{"$error":"#REF!"}},null,null,null,null,399,{"$f":"IF(V406>#REF!,\"\",$T$7)","v":{"$error":"#REF!"}},{"$f":"IF(V406>=#REF!,\"\",IF(V406<=#REF!,#REF!,#REF!))","v":{"$error":"#REF!"}},{"$f":"IF(V406>#REF!,\"\",#REF!)","v":{"$error":"#REF!"}},null,null,null,null,null,null,null,399]
[400,{"$f":"IF(A407>=#REF!,\"\",IF(A407<=#REF!,#REF!,#REF!))","v":{"$error":"#REF!"}},{"$f":"IF(A407>=#REF!,\"\",IF(A407<=#REF!,#REF!,#REF!))","v":{"$error":"#REF!"}},{"$f":"IF(A407>#REF!,\"\",#REF!)","v":{"$error":"#REF!"}},null,400,{"$f":"IF(F407>=#REF!,\"\",IF(F407<=#REF!,#REF!,#REF!))","v":{"$error":"#REF!"}},{"$f":"IF(F407>=#REF!,\"\",IF(F407<=#REF!,#REF!,#REF!))","v":{"$error":"#REF!"}},{"$f":"IF(F407>#REF!,\"\",PMT(#REF!/12,#REF!,-#REF!))","v":{"$error":"#REF!"}},null,null,null,null,400,{"$f":"IF(N407>#REF!,\"\",$L$7)","v":{"$error":"#REF!"}},{"$f":"IF(N407>=#REF!,\"\",IF(N407<=#REF!,#REF!,#REF!))","v":{"$error":"#REF!"}},{"$f":"IF(N407>#REF!,\"\",#REF!)","v":{"$error":"#REF!"}},null,null,null,null,400,{"$f":"IF(V407>#REF!,\"\",$T$7)","v":{"$error":"#REF!"}},{"$f":"IF(V407>=#REF!,\"\",IF(V407<=#REF!,#REF!,#REF!))","v":{"$error":"#REF!"}},{"$f":"IF(V407>#REF!,\"\",#REF!)","v":{"$error":"#REF!"}},null,null,null,null,null,null,null,400]
[401,{"$f":"IF(A408>=#REF!,\"\",IF(A408<=#REF!,#REF!,#REF!))","v":{"$error":"#REF!"}},{"$f":"IF(A408>=#REF!,\"\",IF(A408<=#REF!,#REF!,#REF!))","v":{"$error":"#REF!"}},{"$f":"IF(A408>#REF!,\"\",#REF!)","v":{"$error":"#REF!"}},null,401,{"$f":"IF(F408>=#REF!,\"\",IF(F408<=#REF!,#REF!,#REF!))","v":{"$error":"#REF!"}},{"$f":"IF(F408>=#REF!,\"\",IF(F408<=#REF!,#REF!,#REF!))","v":{"$error":"#REF!"}},{"$f":"IF(F408>#REF!,\"\",PMT(#REF!/12,#REF!,-#REF!))","v":{"$error":"#REF!"}},null,null,null,null,401,{"$f":"IF(N408>#REF!,\"\",$L$7)","v":{"$error":"#REF!"}},{"$f":"IF(N408>=#REF!,\"\",IF(N408<=#REF!,#REF!,#REF!))","v":{"$error":"#REF!"}},{"$f":"IF(N408>#REF!,\"\",#REF!)","v":{"$error":"#REF!"}},null,null,null,null,401,{"$f":"IF(V408>#REF!,\"\",$T$7)","v":{"$error":"#REF!"}},{"$f":"IF(V408>=#REF!,\"\",IF(V408<=#REF!,#REF!,#REF!))","v":{"$error":"#REF!"}},{"$f":"IF(V408>#REF!,\"\",#REF!)","v":{"$error":"#REF!"}},null,null,null,null,null,null,null,401]
[402,{"$f":"IF(A409>=#REF!,\"\",IF(A409<=#REF!,#REF!,#REF!))","v":{"$error":"#REF!"}},{"$f":"IF(A409>=#REF!,\"\",IF(A409<=#REF!,#REF!,#REF!))","v":{"$error":"#REF!"}},{"$f":"IF(A409>#REF!,\"\",#REF!)","v":{"$error":"#REF!"}},null,402,{"$f":"IF(F409>=#REF!,\"\",IF(F409<=#REF!,#REF!,#REF!))","v":{"$error":"#REF!"}},{"$f":"IF(F409>=#REF!,\"\",IF(F409<=#REF!,#REF!,#REF!))","v":{"$error":"#REF!"}},{"$f":"IF(F409>#REF!,\"\",PMT(#REF!/12,#REF!,-#REF!))","v":{"$error":"#REF!"}},null,null,null,null,402,{"$f":"IF(N409>#REF!,\"\",$L$7)","v":{"$error":"#REF!"}},{"$f":"IF(N409>=#REF!,\"\",IF(N409<=#REF!,#REF!,#REF!))","v":{"$error":"#REF!"}},{"$f":"IF(N409>#REF!,\"\",#REF!)","v":{"$error":"#REF!"}},null,null,null,null,402,{"$f":"IF(V409>#REF!,\"\",$T$7)","v":{"$error":"#REF!"}},{"$f":"IF(V409>=#REF!,\"\",IF(V409<=#REF!,#REF!,#REF!))","v":{"$error":"#REF!"}},{"$f":"IF(V409>#REF!,\"\",#REF!)","v":{"$error":"#REF!"}},null,null,null,null,null,null,null,402]
[403,{"$f":"IF(A410>=#REF!,\"\",IF(A410<=#REF!,#REF!,#REF!))","v":{"$error":"#REF!"}},{"$f":"IF(A410>=#REF!,\"\",IF(A410<=#REF!,#REF!,#REF!))","v":{"$error":"#REF!"}},{"$f":"IF(A410>#REF!,\"\",#REF!)","v":{"$error":"#REF!"}},null,403,{"$f":"IF(F410>=#REF!,\"\",IF(F410<=#REF!,#REF!,#REF!))","v":{"$error":"#REF!"}},{"$f":"IF(F410>=#REF!,\"\",IF(F410<=#REF!,#REF!,#REF!))","v":{"$error":"#REF!"}},{"$f":"IF(F410>#REF!,\"\",PMT(#REF!/12,#REF!,-#REF!))","v":{"$error":"#REF!"}},null,null,null,null,403,{"$f":"IF(N410>#REF!,\"\",$L$7)","v":{"$error":"#REF!"}},{"$f":"IF(N410>=#REF!,\"\",IF(N410<=#REF!,#REF!,#REF!))","v":{"$error":"#REF!"}},{"$f":"IF(N410>#REF!,\"\",#REF!)","v":{"$error":"#REF!"}},null,null,null,null,403,{"$f":"IF(V410>#REF!,\"\",$T$7)","v":{"$error":"#REF!"}},{"$f":"IF(V410>=#REF!,\"\",IF(V410<=#REF!,#REF!,#REF!))","v":{"$error":"#REF!"}},{"$f":"IF(V410>#REF!,\"\",#REF!)","v":{"$error":"#REF!"}},null,null,null,null,null,null,null,403]
[404,{"$f":"IF(A411>=#REF!,\"\",IF(A411<=#REF!,#REF!,#REF!))","v":{"$error":"#REF!"}},{"$f":"IF(A411>=#REF!,\"\",IF(A411<=#REF!,#REF!,#REF!))","v":{"$error":"#REF!"}},{"$f":"IF(A411>#REF!,\"\",#REF!)","v":{"$error":"#REF!"}},null,404,{"$f":"IF(F411>=#REF!,\"\",IF(F411<=#REF!,#REF!,#REF!))","v":{"$error":"#REF!"}},{"$f":"IF(F411>=#REF!,\"\",IF(F411<=#REF!,#REF!,#REF!))","v":{"$error":"#REF!"}},{"$f":"IF(F411>#REF!,\"\",PMT(#REF!/12,#REF!,-#REF!))","v":{"$error":"#REF!"}},null,null,null,null,404,{"$f":"IF(N411>#REF!,\"\",$L$7)","v":{"$error":"#REF!"}},{"$f":"IF(N411>=#REF!,\"\",IF(N411<=#REF!,#REF!,#REF!))","v":{"$error":"#REF!"}},{"$f":"IF(N411>#REF!,\"\",#REF!)","v":{"$error":"#REF!"}},null,null,null,null,404,{"$f":"IF(V411>#REF!,\"\",$T$7)","v":{"$error":"#REF!"}},{"$f":"IF(V411>=#REF!,\"\",IF(V411<=#REF!,#REF!,#REF!))","v":{"$error":"#REF!"}},{"$f":"IF(V411>#REF!,\"\",#REF!)","v":{"$error":"#REF!"}},null,null,null,null,null,null,null,404]
[405,{"$f":"IF(A412>=#REF!,\"\",IF(A412<=#REF!,#REF!,#REF!))","v":{"$error":"#REF!"}},{"$f":"IF(A412>=#REF!,\"\",IF(A412<=#REF!,#REF!,#REF!))","v":{"$error":"#REF!"}},{"$f":"IF(A412>#REF!,\"\",#REF!)","v":{"$error":"#REF!"}},null,405,{"$f":"IF(F412>=#REF!,\"\",IF(F412<=#REF!,#REF!,#REF!))","v":{"$error":"#REF!"}},{"$f":"IF(F412>=#REF!,\"\",IF(F412<=#REF!,#REF!,#REF!))","v":{"$error":"#REF!"}},{"$f":"IF(F412>#REF!,\"\",PMT(#REF!/12,#REF!,-#REF!))","v":{"$error":"#REF!"}},null,null,null,null,405,{"$f":"IF(N412>#REF!,\"\",$L$7)","v":{"$error":"#REF!"}},{"$f":"IF(N412>=#REF!,\"\",IF(N412<=#REF!,#REF!,#REF!))","v":{"$error":"#REF!"}},{"$f":"IF(N412>#REF!,\"\",#REF!)","v":{"$error":"#REF!"}},null,null,null,null,405,{"$f":"IF(V412>#REF!,\"\",$T$7)","v":{"$error":"#REF!"}},{"$f":"IF(V412>=#REF!,\"\",IF(V412<=#REF!,#REF!,#REF!))","v":{"$error":"#REF!"}},{"$f":"IF(V412>#REF!,\"\",#REF!)","v":{"$error":"#REF!"}},null,null,null,null,null,null,null,405]
[406,{"$f":"IF(A413>=#REF!,\"\",IF(A413<=#REF!,#REF!,#REF!))","v":{"$error":"#REF!"}},{"$f":"IF(A413>=#REF!,\"\",IF(A413<=#REF!,#REF!,#REF!))","v":{"$error":"#REF!"}},{"$f":"IF(A413>#REF!,\"\",#REF!)","v":{"$error":"#REF!"}},null,406,{"$f":"IF(F413>=#REF!,\"\",IF(F413<=#REF!,#REF!,#REF!))","v":{"$error":"#REF!"}},{"$f":"IF(F413>=#REF!,\"\",IF(F413<=#REF!,#REF!,#REF!))","v":{"$error":"#REF!"}},{"$f":"IF(F413>#REF!,\"\",PMT(#REF!/12,#REF!,-#REF!))","v":{"$error":"#REF!"}},null,null,null,null,406,{"$f":"IF(N413>#REF!,\"\",$L$7)","v":{"$error":"#REF!"}},{"$f":"IF(N413>=#REF!,\"\",IF(N413<=#REF!,#REF!,#REF!))","v":{"$error":"#REF!"}},{"$f":"IF(N413>#REF!,\"\",#REF!)","v":{"$error":"#REF!"}},null,null,null,null,406,{"$f":"IF(V413>#REF!,\"\",$T$7)","v":{"$error":"#REF!"}},{"$f":"IF(V413>=#REF!,\"\",IF(V413<=#REF!,#REF!,#REF!))","v":{"$error":"#REF!"}},{"$f":"IF(V413>#REF!,\"\",#REF!)","v":{"$error":"#REF!"}},null,null,null,null,null,null,null,406]
[407,{"$f":"IF(A414>=#REF!,\"\",IF(A414<=#REF!,#REF!,#REF!))","v":{"$error":"#REF!"}},{"$f":"IF(A414>=#REF!,\"\",IF(A414<=#REF!,#REF!,#REF!))","v":{"$error":"#REF!"}},{"$f":"IF(A414>#REF!,\"\",#REF!)","v":{"$error":"#REF!"}},null,407,{"$f":"IF(F414>=#REF!,\"\",IF(F414<=#REF!,#REF!,#REF!))","v":{"$error":"#REF!"}},{"$f":"IF(F414>=#REF!,\"\",IF(F414<=#REF!,#REF!,#REF!))","v":{"$error":"#REF!"}},{"$f":"IF(F414>#REF!,\"\",PMT(#REF!/12,#REF!,-#REF!))","v":{"$error":"#REF!"}},null,null,null,null,407,{"$f":"IF(N414>#REF!,\"\",$L$7)","v":{"$error":"#REF!"}},{"$f":"IF(N414>=#REF!,\"\",IF(N414<=#REF!,#REF!,#REF!))","v":{"$error":"#REF!"}},{"$f":"IF(N414>#REF!,\"\",#REF!)","v":{"$error":"#REF!"}},null,null,null,null,407,{"$f":"IF(V414>#REF!,\"\",$T$7)","v":{"$error":"#REF!"}},{"$f":"IF(V414>=#REF!,\"\",IF(V414<=#REF!,#REF!,#REF!))","v":{"$error":"#REF!"}},{"$f":"IF(V414>#REF!,\"\",#REF!)","v":{"$error":"#REF!"}},null,null,null,null,null,null,null,407]
[408,{"$f":"IF(A415>=#REF!,\"\",IF(A415<=#REF!,#REF!,#REF!))","v":{"$error":"#REF!"}},{"$f":"IF(A415>=#REF!,\"\",IF(A415<=#REF!,#REF!,#REF!))","v":{"$error":"#REF!"}},{"$f":"IF(A415>#REF!,\"\",#REF!)","v":{"$error":"#REF!"}},null,408,{"$f":"IF(F415>=#REF!,\"\",IF(F415<=#REF!,#REF!,#REF!))","v":{"$error":"#REF!"}},{"$f":"IF(F415>=#REF!,\"\",IF(F415<=#REF!,#REF!,#REF!))","v":{"$error":"#REF!"}},{"$f":"IF(F415>#REF!,\"\",PMT(#REF!/12,#REF!,-#REF!))","v":{"$error":"#REF!"}},null,null,null,null,408,{"$f":"IF(N415>#REF!,\"\",$L$7)","v":{"$error":"#REF!"}},{"$f":"IF(N415>=#REF!,\"\",IF(N415<=#REF!,#REF!,#REF!))","v":{"$error":"#REF!"}},{"$f":"IF(N415>#REF!,\"\",#REF!)","v":{"$error":"#REF!"}},null,null,null,null,408,{"$f":"IF(V415>#REF!,\"\",$T$7)","v":{"$error":"#REF!"}},{"$f":"IF(V415>=#REF!,\"\",IF(V415<=#REF!,#REF!,#REF!))","v":{"$error":"#REF!"}},{"$f":"IF(V415>#REF!,\"\",#REF!)","v":{"$error":"#REF!"}},null,null,null,null,null,null,null,408]
[409,{"$f":"IF(A416>=#REF!,\"\",IF(A416<=#REF!,#REF!,#REF!))","v":{"$error":"#REF!"}},{"$f":"IF(A416>=#REF!,\"\",IF(A416<=#REF!,#REF!,#REF!))","v":{"$error":"#REF!"}},{"$f":"IF(A416>#REF!,\"\",#REF!)","v":{"$error":"#REF!"}},null,409,{"$f":"IF(F416>=#REF!,\"\",IF(F416<=#REF!,#REF!,#REF!))","v":{"$error":"#REF!"}},{"$f":"IF(F416>=#REF!,\"\",IF(F416<=#REF!,#REF!,#REF!))","v":{"$error":"#REF!"}},{"$f":"IF(F416>#REF!,\"\",PMT(#REF!/12,#REF!,-#REF!))","v":{"$error":"#REF!"}},null,null,null,null,409,{"$f":"IF(N416>#REF!,\"\",$L$7)","v":{"$error":"#REF!"}},{"$f":"IF(N416>=#REF!,\"\",IF(N416<=#REF!,#REF!,#REF!))","v":{"$error":"#REF!"}},{"$f":"IF(N416>#REF!,\"\",#REF!)","v":{"$error":"#REF!"}},null,null,null,null,409,{"$f":"IF(V416>#REF!,\"\",$T$7)","v":{"$error":"#REF!"}},{"$f":"IF(V416>=#REF!,\"\",IF(V416<=#REF!,#REF!,#REF!))","v":{"$error":"#REF!"}},{"$f":"IF(V416>#REF!,\"\",#REF!)","v":{"$error":"#REF!"}},null,null,null,null,null,null,null,409]
[410,{"$f":"IF(A417>=#REF!,\"\",IF(A417<=#REF!,#REF!,#REF!))","v":{"$error":"#REF!"}},{"$f":"IF(A417>=#REF!,\"\",IF(A417<=#REF!,#REF!,#REF!))","v":{"$error":"#REF!"}},{"$f":"IF(A417>#REF!,\"\",#REF!)","v":{"$error":"#REF!"}},null,410,{"$f":"IF(F417>=#REF!,\"\",IF(F417<=#REF!,#REF!,#REF!))","v":{"$error":"#REF!"}},{"$f":"IF(F417>=#REF!,\"\",IF(F417<=#REF!,#REF!,#REF!))","v":{"$error":"#REF!"}},{"$f":"IF(F417>#REF!,\"\",PMT(#REF!/12,#REF!,-#REF!))","v":{"$error":"#REF!"}},null,null,null,null,410,{"$f":"IF(N417>#REF!,\"\",$L$7)","v":{"$error":"#REF!"}},{"$f":"IF(N417>=#REF!,\"\",IF(N417<=#REF!,#REF!,#REF!))","v":{"$error":"#REF!"}},{"$f":"IF(N417>#REF!,\"\",#REF!)","v":{"$error":"#REF!"}},null,null,null,null,410,{"$f":"IF(V417>#REF!,\"\",$T$7)","v":{"$error":"#REF!"}},{"$f":"IF(V417>=#REF!,\"\",IF(V417<=#REF!,#REF!,#REF!))","v":{"$error":"#REF!"}},{"$f":"IF(V417>#REF!,\"\",#REF!)","v":{"$error":"#REF!"}},null,null,null,null,null,null,null,410]
[411,{"$f":"IF(A418>=#REF!,\"\",IF(A418<=#REF!,#REF!,#REF!))","v":{"$error":"#REF!"}},{"$f":"IF(A418>=#REF!,\"\",IF(A418<=#REF!,#REF!,#REF!))","v":{"$error":"#REF!"}},{"$f":"IF(A418>#REF!,\"\",#REF!)","v":{"$error":"#REF!"}},null,411,{"$f":"IF(F418>=#REF!,\"\",IF(F418<=#REF!,#REF!,#REF!))","v":{"$error":"#REF!"}},{"$f":"IF(F418>=#REF!,\"\",IF(F418<=#REF!,#REF!,#REF!))","v":{"$error":"#REF!"}},{"$f":"IF(F418>#REF!,\"\",PMT(#REF!/12,#REF!,-#REF!))","v":{"$error":"#REF!"}},null,null,null,null,411,{"$f":"IF(N418>#REF!,\"\",$L$7)","v":{"$error":"#REF!"}},{"$f":"IF(N418>=#REF!,\"\",IF(N418<=#REF!,#REF!,#REF!))","v":{"$error":"#REF!"}},{"$f":"IF(N418>#REF!,\"\",#REF!)","v":{"$error":"#REF!"}},null,null,null,null,411,{"$f":"IF(V418>#REF!,\"\",$T$7)","v":{"$error":"#REF!"}},{"$f":"IF(V418>=#REF!,\"\",IF(V418<=#REF!,#REF!,#REF!))","v":{"$error":"#REF!"}},{"$f":"IF(V418>#REF!,\"\",#REF!)","v":{"$error":"#REF!"}},null,null,null,null,null,null,null,411]
[412,{"$f":"IF(A419>=#REF!,\"\",IF(A419<=#REF!,#REF!,#REF!))","v":{"$error":"#REF!"}},{"$f":"IF(A419>=#REF!,\"\",IF(A419<=#REF!,#REF!,#REF!))","v":{"$error":"#REF!"}},{"$f":"IF(A419>#REF!,\"\",#REF!)","v":{"$error":"#REF!"}},null,412,{"$f":"IF(F419>=#REF!,\"\",IF(F419<=#REF!,#REF!,#REF!))","v":{"$error":"#REF!"}},{"$f":"IF(F419>=#REF!,\"\",IF(F419<=#REF!,#REF!,#REF!))","v":{"$error":"#REF!"}},{"$f":"IF(F419>#REF!,\"\",PMT(#REF!/12,#REF!,-#REF!))","v":{"$error":"#REF!"}},null,null,null,null,412,{"$f":"IF(N419>#REF!,\"\",$L$7)","v":{"$error":"#REF!"}},{"$f":"IF(N419>=#REF!,\"\",IF(N419<=#REF!,#REF!,#REF!))","v":{"$error":"#REF!"}},{"$f":"IF(N419>#REF!,\"\",#REF!)","v":{"$error":"#REF!"}},null,null,null,null,412,{"$f":"IF(V419>#REF!,\"\",$T$7)","v":{"$error":"#REF!"}},{"$f":"IF(V419>=#REF!,\"\",IF(V419<=#REF!,#REF!,#REF!))","v":{"$error":"#REF!"}},{"$f":"IF(V419>#REF!,\"\",#REF!)","v":{"$error":"#REF!"}},null,null,null,null,null,null,null,412]
[413,{"$f":"IF(A420>=#REF!,\"\",IF(A420<=#REF!,#REF!,#REF!))","v":{"$error":"#REF!"}},{"$f":"IF(A420>=#REF!,\"\",IF(A420<=#REF!,#REF!,#REF!))","v":{"$error":"#REF!"}},{"$f":"IF(A420>#REF!,\"\",#REF!)","v":{"$error":"#REF!"}},null,413,{"$f":"IF(F420>=#REF!,\"\",IF(F420<=#REF!,#REF!,#REF!))","v":{"$error":"#REF!"}},{"$f":"IF(F420>=#REF!,\"\",IF(F420<=#REF!,#REF!,#REF!))","v":{"$error":"#REF!"}},{"$f":"IF(F420>#REF!,\"\",PMT(#REF!/12,#REF!,-#REF!))","v":{"$error":"#REF!"}},null,null,null,null,413,{"$f":"IF(N420>#REF!,\"\",$L$7)","v":{"$error":"#REF!"}},{"$f":"IF(N420>=#REF!,\"\",IF(N420<=#REF!,#REF!,#REF!))","v":{"$error":"#REF!"}},{"$f":"IF(N420>#REF!,\"\",#REF!)","v":{"$error":"#REF!"}},null,null,null,null,413,{"$f":"IF(V420>#REF!,\"\",$T$7)","v":{"$error":"#REF!"}},{"$f":"IF(V420>=#REF!,\"\",IF(V420<=#REF!,#REF!,#REF!))","v":{"$error":"#REF!"}},{"$f":"IF(V420>#REF!,\"\",#REF!)","v":{"$error":"#REF!"}},null,null,null,null,null,null,null,413]
[414,{"$f":"IF(A421>=#REF!,\"\",IF(A421<=#REF!,#REF!,#REF!))","v":{"$error":"#REF!"}},{"$f":"IF(A421>=#REF!,\"\",IF(A421<=#REF!,#REF!,#REF!))","v":{"$error":"#REF!"}},{"$f":"IF(A421>#REF!,\"\",#REF!)","v":{"$error":"#REF!"}},null,414,{"$f":"IF(F421>=#REF!,\"\",IF(F421<=#REF!,#REF!,#REF!))","v":{"$error":"#REF!"}},{"$f":"IF(F421>=#REF!,\"\",IF(F421<=#REF!,#REF!,#REF!))","v":{"$error":"#REF!"}},{"$f":"IF(F421>#REF!,\"\",PMT(#REF!/12,#REF!,-#REF!))","v":{"$error":"#REF!"}},null,null,null,null,414,{"$f":"IF(N421>#REF!,\"\",$L$7)","v":{"$error":"#REF!"}},{"$f":"IF(N421>=#REF!,\"\",IF(N421<=#REF!,#REF!,#REF!))","v":{"$error":"#REF!"}},{"$f":"IF(N421>#REF!,\"\",#REF!)","v":{"$error":"#REF!"}},null,null,null,null,414,{"$f":"IF(V421>#REF!,\"\",$T$7)","v":{"$error":"#REF!"}},{"$f":"IF(V421>=#REF!,\"\",IF(V421<=#REF!,#REF!,#REF!))","v":{"$error":"#REF!"}},{"$f":"IF(V421>#REF!,\"\",#REF!)","v":{"$error":"#REF!"}},null,null,null,null,null,null,null,414]
[415,{"$f":"IF(A422>=#REF!,\"\",IF(A422<=#REF!,#REF!,#REF!))","v":{"$error":"#REF!"}},{"$f":"IF(A422>=#REF!,\"\",IF(A422<=#REF!,#REF!,#REF!))","v":{"$error":"#REF!"}},{"$f":"IF(A422>#REF!,\"\",#REF!)","v":{"$error":"#REF!"}},null,415,{"$f":"IF(F422>=#REF!,\"\",IF(F422<=#REF!,#REF!,#REF!))","v":{"$error":"#REF!"}},{"$f":"IF(F422>=#REF!,\"\",IF(F422<=#REF!,#REF!,#REF!))","v":{"$error":"#REF!"}},{"$f":"IF(F422>#REF!,\"\",PMT(#REF!/12,#REF!,-#REF!))","v":{"$error":"#REF!"}},null,null,null,null,415,{"$f":"IF(N422>#REF!,\"\",$L$7)","v":{"$error":"#REF!"}},{"$f":"IF(N422>=#REF!,\"\",IF(N422<=#REF!,#REF!,#REF!))","v":{"$error":"#REF!"}},{"$f":"IF(N422>#REF!,\"\",#REF!)","v":{"$error":"#REF!"}},null,null,null,null,415,{"$f":"IF(V422>#REF!,\"\",$T$7)","v":{"$error":"#REF!"}},{"$f":"IF(V422>=#REF!,\"\",IF(V422<=#REF!,#REF!,#REF!))","v":{"$error":"#REF!"}},{"$f":"IF(V422>#REF!,\"\",#REF!)","v":{"$error":"#REF!"}},null,null,null,null,null,null,null,415]
[416,{"$f":"IF(A423>=#REF!,\"\",IF(A423<=#REF!,#REF!,#REF!))","v":{"$error":"#REF!"}},{"$f":"IF(A423>=#REF!,\"\",IF(A423<=#REF!,#REF!,#REF!))","v":{"$error":"#REF!"}},{"$f":"IF(A423>#REF!,\"\",#REF!)","v":{"$error":"#REF!"}},null,416,{"$f":"IF(F423>=#REF!,\"\",IF(F423<=#REF!,#REF!,#REF!))","v":{"$error":"#REF!"}},{"$f":"IF(F423>=#REF!,\"\",IF(F423<=#REF!,#REF!,#REF!))","v":{"$error":"#REF!"}},{"$f":"IF(F423>#REF!,\"\",PMT(#REF!/12,#REF!,-#REF!))","v":{"$error":"#REF!"}},null,null,null,null,416,{"$f":"IF(N423>#REF!,\"\",$L$7)","v":{"$error":"#REF!"}},{"$f":"IF(N423>=#REF!,\"\",IF(N423<=#REF!,#REF!,#REF!))","v":{"$error":"#REF!"}},{"$f":"IF(N423>#REF!,\"\",#REF!)","v":{"$error":"#REF!"}},null,null,null,null,416,{"$f":"IF(V423>#REF!,\"\",$T$7)","v":{"$error":"#REF!"}},{"$f":"IF(V423>=#REF!,\"\",IF(V423<=#REF!,#REF!,#REF!))","v":{"$error":"#REF!"}},{"$f":"IF(V423>#REF!,\"\",#REF!)","v":{"$error":"#REF!"}},null,null,null,null,null,null,null,416]
[417,{"$f":"IF(A424>=#REF!,\"\",IF(A424<=#REF!,#REF!,#REF!))","v":{"$error":"#REF!"}},{"$f":"IF(A424>=#REF!,\"\",IF(A424<=#REF!,#REF!,#REF!))","v":{"$error":"#REF!"}},{"$f":"IF(A424>#REF!,\"\",#REF!)","v":{"$error":"#REF!"}},null,417,{"$f":"IF(F424>=#REF!,\"\",IF(F424<=#REF!,#REF!,#REF!))","v":{"$error":"#REF!"}},{"$f":"IF(F424>=#REF!,\"\",IF(F424<=#REF!,#REF!,#REF!))","v":{"$error":"#REF!"}},{"$f":"IF(F424>#REF!,\"\",PMT(#REF!/12,#REF!,-#REF!))","v":{"$error":"#REF!"}},null,null,null,null,417,{"$f":"IF(N424>#REF!,\"\",$L$7)","v":{"$error":"#REF!"}},{"$f":"IF(N424>=#REF!,\"\",IF(N424<=#REF!,#REF!,#REF!))","v":{"$error":"#REF!"}},{"$f":"IF(N424>#REF!,\"\",#REF!)","v":{"$error":"#REF!"}},null,null,null,null,417,{"$f":"IF(V424>#REF!,\"\",$T$7)","v":{"$error":"#REF!"}},{"$f":"IF(V424>=#REF!,\"\",IF(V424<=#REF!,#REF!,#REF!))","v":{"$error":"#REF!"}},{"$f":"IF(V424>#REF!,\"\",#REF!)","v":{"$error":"#REF!"}},null,null,null,null,null,null,null,417]
[418,{"$f":"IF(A425>=#REF!,\"\",IF(A425<=#REF!,#REF!,#REF!))","v":{"$error":"#REF!"}},{"$f":"IF(A425>=#REF!,\"\",IF(A425<=#REF!,#REF!,#REF!))","v":{"$error":"#REF!"}},{"$f":"IF(A425>#REF!,\"\",#REF!)","v":{"$error":"#REF!"}},null,418,{"$f":"IF(F425>=#REF!,\"\",IF(F425<=#REF!,#REF!,#REF!))","v":{"$error":"#REF!"}},{"$f":"IF(F425>=#REF!,\"\",IF(F425<=#REF!,#REF!,#REF!))","v":{"$error":"#REF!"}},{"$f":"IF(F425>#REF!,\"\",PMT(#REF!/12,#REF!,-#REF!))","v":{"$error":"#REF!"}},null,null,null,null,418,{"$f":"IF(N425>#REF!,\"\",$L$7)","v":{"$error":"#REF!"}},{"$f":"IF(N425>=#REF!,\"\",IF(N425<=#REF!,#REF!,#REF!))","v":{"$error":"#REF!"}},{"$f":"IF(N425>#REF!,\"\",#REF!)","v":{"$error":"#REF!"}},null,null,null,null,418,{"$f":"IF(V425>#REF!,\"\",$T$7)","v":{"$error":"#REF!"}},{"$f":"IF(V425>=#REF!,\"\",IF(V425<=#REF!,#REF!,#REF!))","v":{"$error":"#REF!"}},{"$f":"IF(V425>#REF!,\"\",#REF!)","v":{"$error":"#REF!"}},null,null,null,null,null,null,null,418]
[419,{"$f":"IF(A426>=#REF!,\"\",IF(A426<=#REF!,#REF!,#REF!))","v":{"$error":"#REF!"}},{"$f":"IF(A426>=#REF!,\"\",IF(A426<=#REF!,#REF!,#REF!))","v":{"$error":"#REF!"}},{"$f":"IF(A426>#REF!,\"\",#REF!)","v":{"$error":"#REF!"}},null,419,{"$f":"IF(F426>=#REF!,\"\",IF(F426<=#REF!,#REF!,#REF!))","v":{"$error":"#REF!"}},{"$f":"IF(F426>=#REF!,\"\",IF(F426<=#REF!,#REF!,#REF!))","v":{"$error":"#REF!"}},{"$f":"IF(F426>#REF!,\"\",PMT(#REF!/12,#REF!,-#REF!))","v":{"$error":"#REF!"}},null,null,null,null,419,{"$f":"IF(N426>#REF!,\"\",$L$7)","v":{"$error":"#REF!"}},{"$f":"IF(N426>=#REF!,\"\",IF(N426<=#REF!,#REF!,#REF!))","v":{"$error":"#REF!"}},{"$f":"IF(N426>#REF!,\"\",#REF!)","v":{"$error":"#REF!"}},null,null,null,null,419,{"$f":"IF(V426>#REF!,\"\",$T$7)","v":{"$error":"#REF!"}},{"$f":"IF(V426>=#REF!,\"\",IF(V426<=#REF!,#REF!,#REF!))","v":{"$error":"#REF!"}},{"$f":"IF(V426>#REF!,\"\",#REF!)","v":{"$error":"#REF!"}},null,null,null,null,null,null,null,419]
[420,{"$f":"IF(A427>=#REF!,\"\",IF(A427<=#REF!,#REF!,#REF!))","v":{"$error":"#REF!"}},{"$f":"IF(A427>=#REF!,\"\",IF(A427<=#REF!,#REF!,#REF!))","v":{"$error":"#REF!"}},{"$f":"IF(A427>#REF!,\"\",#REF!)","v":{"$error":"#REF!"}},null,420,{"$f":"IF(F427>=#REF!,\"\",IF(F427<=#REF!,#REF!,#REF!))","v":{"$error":"#REF!"}},{"$f":"IF(F427>=#REF!,\"\",IF(F427<=#REF!,#REF!,#REF!))","v":{"$error":"#REF!"}},{"$f":"IF(F427>#REF!,\"\",PMT(#REF!/12,#REF!,-#REF!))","v":{"$error":"#REF!"}},null,null,null,null,420,{"$f":"IF(N427>#REF!,\"\",$L$7)","v":{"$error":"#REF!"}},{"$f":"IF(N427>=#REF!,\"\",IF(N427<=#REF!,#REF!,#REF!))","v":{"$error":"#REF!"}},{"$f":"IF(N427>#REF!,\"\",#REF!)","v":{"$error":"#REF!"}},null,null,null,null,420,{"$f":"IF(V427>#REF!,\"\",$T$7)","v":{"$error":"#REF!"}},{"$f":"IF(V427>=#REF!,\"\",IF(V427<=#REF!,#REF!,#REF!))","v":{"$error":"#REF!"}},{"$f":"IF(V427>#REF!,\"\",#REF!)","v":{"$error":"#REF!"}},null,null,null,null,null,null,null,420]
[421,{"$f":"IF(A428>=#REF!,\"\",IF(A428<=#REF!,#REF!,#REF!))","v":{"$error":"#REF!"}},{"$f":"IF(A428>=#REF!,\"\",IF(A428<=#REF!,#REF!,#REF!))","v":{"$error":"#REF!"}},{"$f":"IF(A428>#REF!,\"\",#REF!)","v":{"$error":"#REF!"}},null,421,{"$f":"IF(F428>=#REF!,\"\",IF(F428<=#REF!,#REF!,#REF!))","v":{"$error":"#REF!"}},{"$f":"IF(F428>=#REF!,\"\",IF(F428<=#REF!,#REF!,#REF!))","v":{"$error":"#REF!"}},{"$f":"IF(F428>#REF!,\"\",PMT(#REF!/12,#REF!,-#REF!))","v":{"$error":"#REF!"}},null,null,null,null,421,{"$f":"IF(N428>#REF!,\"\",$L$7)","v":{"$error":"#REF!"}},{"$f":"IF(N428>=#REF!,\"\",IF(N428<=#REF!,#REF!,#REF!))","v":{"$error":"#REF!"}},{"$f":"IF(N428>#REF!,\"\",#REF!)","v":{"$error":"#REF!"}},null,null,null,null,421,{"$f":"IF(V428>#REF!,\"\",$T$7)","v":{"$error":"#REF!"}},{"$f":"IF(V428>=#REF!,\"\",IF(V428<=#REF!,#REF!,#REF!))","v":{"$error":"#REF!"}},{"$f":"IF(V428>#REF!,\"\",#REF!)","v":{"$error":"#REF!"}},null,null,null,null,null,null,null,421]
[422,{"$f":"IF(A429>=#REF!,\"\",IF(A429<=#REF!,#REF!,#REF!))","v":{"$error":"#REF!"}},{"$f":"IF(A429>=#REF!,\"\",IF(A429<=#REF!,#REF!,#REF!))","v":{"$error":"#REF!"}},{"$f":"IF(A429>#REF!,\"\",#REF!)","v":{"$error":"#REF!"}},null,422,{"$f":"IF(F429>=#REF!,\"\",IF(F429<=#REF!,#REF!,#REF!))","v":{"$error":"#REF!"}},{"$f":"IF(F429>=#REF!,\"\",IF(F429<=#REF!,#REF!,#REF!))","v":{"$error":"#REF!"}},{"$f":"IF(F429>#REF!,\"\",PMT(#REF!/12,#REF!,-#REF!))","v":{"$error":"#REF!"}},null,null,null,null,422,{"$f":"IF(N429>#REF!,\"\",$L$7)","v":{"$error":"#REF!"}},{"$f":"IF(N429>=#REF!,\"\",IF(N429<=#REF!,#REF!,#REF!))","v":{"$error":"#REF!"}},{"$f":"IF(N429>#REF!,\"\",#REF!)","v":{"$error":"#REF!"}},null,null,null,null,422,{"$f":"IF(V429>#REF!,\"\",$T$7)","v":{"$error":"#REF!"}},{"$f":"IF(V429>=#REF!,\"\",IF(V429<=#REF!,#REF!,#REF!))","v":{"$error":"#REF!"}},{"$f":"IF(V429>#REF!,\"\",#REF!)","v":{"$error":"#REF!"}},null,null,null,null,null,null,null,422]
[423,{"$f":"IF(A430>=#REF!,\"\",IF(A430<=#REF!,#REF!,#REF!))","v":{"$error":"#REF!"}},{"$f":"IF(A430>=#REF!,\"\",IF(A430<=#REF!,#REF!,#REF!))","v":{"$error":"#REF!"}},{"$f":"IF(A430>#REF!,\"\",#REF!)","v":{"$error":"#REF!"}},null,423,{"$f":"IF(F430>=#REF!,\"\",IF(F430<=#REF!,#REF!,#REF!))","v":{"$error":"#REF!"}},{"$f":"IF(F430>=#REF!,\"\",IF(F430<=#REF!,#REF!,#REF!))","v":{"$error":"#REF!"}},{"$f":"IF(F430>#REF!,\"\",PMT(#REF!/12,#REF!,-#REF!))","v":{"$error":"#REF!"}},null,null,null,null,423,{"$f":"IF(N430>#REF!,\"\",$L$7)","v":{"$error":"#REF!"}},{"$f":"IF(N430>=#REF!,\"\",IF(N430<=#REF!,#REF!,#REF!))","v":{"$error":"#REF!"}},{"$f":"IF(N430>#REF!,\"\",#REF!)","v":{"$error":"#REF!"}},null,null,null,null,423,{"$f":"IF(V430>#REF!,\"\",$T$7)","v":{"$error":"#REF!"}},{"$f":"IF(V430>=#REF!,\"\",IF(V430<=#REF!,#REF!,#REF!))","v":{"$error":"#REF!"}},{"$f":"IF(V430>#REF!,\"\",#REF!)","v":{"$error":"#REF!"}},null,null,null,null,null,null,null,423]
[424,{"$f":"IF(A431>=#REF!,\"\",IF(A431<=#REF!,#REF!,#REF!))","v":{"$error":"#REF!"}},{"$f":"IF(A431>=#REF!,\"\",IF(A431<=#REF!,#REF!,#REF!))","v":{"$error":"#REF!"}},{"$f":"IF(A431>#REF!,\"\",#REF!)","v":{"$error":"#REF!"}},null,424,{"$f":"IF(F431>=#REF!,\"\",IF(F431<=#REF!,#REF!,#REF!))","v":{"$error":"#REF!"}},{"$f":"IF(F431>=#REF!,\"\",IF(F431<=#REF!,#REF!,#REF!))","v":{"$error":"#REF!"}},{"$f":"IF(F431>#REF!,\"\",PMT(#REF!/12,#REF!,-#REF!))","v":{"$error":"#REF!"}},null,null,null,null,424,{"$f":"IF(N431>#REF!,\"\",$L$7)","v":{"$error":"#REF!"}},{"$f":"IF(N431>=#REF!,\"\",IF(N431<=#REF!,#REF!,#REF!))","v":{"$error":"#REF!"}},{"$f":"IF(N431>#REF!,\"\",#REF!)","v":{"$error":"#REF!"}},null,null,null,null,424,{"$f":"IF(V431>#REF!,\"\",$T$7)","v":{"$error":"#REF!"}},{"$f":"IF(V431>=#REF!,\"\",IF(V431<=#REF!,#REF!,#REF!))","v":{"$error":"#REF!"}},{"$f":"IF(V431>#REF!,\"\",#REF!)","v":{"$error":"#REF!"}},null,null,null,null,null,null,null,424]
[425,{"$f":"IF(A432>=#REF!,\"\",IF(A432<=#REF!,#REF!,#REF!))","v":{"$error":"#REF!"}},{"$f":"IF(A432>=#REF!,\"\",IF(A432<=#REF!,#REF!,#REF!))","v":{"$error":"#REF!"}},{"$f":"IF(A432>#REF!,\"\",#REF!)","v":{"$error":"#REF!"}},null,425,{"$f":"IF(F432>=#REF!,\"\",IF(F432<=#REF!,#REF!,#REF!))","v":{"$error":"#REF!"}},{"$f":"IF(F432>=#REF!,\"\",IF(F432<=#REF!,#REF!,#REF!))","v":{"$error":"#REF!"}},{"$f":"IF(F432>#REF!,\"\",PMT(#REF!/12,#REF!,-#REF!))","v":{"$error":"#REF!"}},null,null,null,null,425,{"$f":"IF(N432>#REF!,\"\",$L$7)","v":{"$error":"#REF!"}},{"$f":"IF(N432>=#REF!,\"\",IF(N432<=#REF!,#REF!,#REF!))","v":{"$error":"#REF!"}},{"$f":"IF(N432>#REF!,\"\",#REF!)","v":{"$error":"#REF!"}},null,null,null,null,425,{"$f":"IF(V432>#REF!,\"\",$T$7)","v":{"$error":"#REF!"}},{"$f":"IF(V432>=#REF!,\"\",IF(V432<=#REF!,#REF!,#REF!))","v":{"$error":"#REF!"}},{"$f":"IF(V432>#REF!,\"\",#REF!)","v":{"$error":"#REF!"}},null,null,null,null,null,null,null,425]
[426,{"$f":"IF(A433>=#REF!,\"\",IF(A433<=#REF!,#REF!,#REF!))","v":{"$error":"#REF!"}},{"$f":"IF(A433>=#REF!,\"\",IF(A433<=#REF!,#REF!,#REF!))","v":{"$error":"#REF!"}},{"$f":"IF(A433>#REF!,\"\",#REF!)","v":{"$error":"#REF!"}},null,426,{"$f":"IF(F433>=#REF!,\"\",IF(F433<=#REF!,#REF!,#REF!))","v":{"$error":"#REF!"}},{"$f":"IF(F433>=#REF!,\"\",IF(F433<=#REF!,#REF!,#REF!))","v":{"$error":"#REF!"}},{"$f":"IF(F433>#REF!,\"\",PMT(#REF!/12,#REF!,-#REF!))","v":{"$error":"#REF!"}},null,null,null,null,426,{"$f":"IF(N433>#REF!,\"\",$L$7)","v":{"$error":"#REF!"}},{"$f":"IF(N433>=#REF!,\"\",IF(N433<=#REF!,#REF!,#REF!))","v":{"$error":"#REF!"}},{"$f":"IF(N433>#REF!,\"\",#REF!)","v":{"$error":"#REF!"}},null,null,null,null,426,{"$f":"IF(V433>#REF!,\"\",$T$7)","v":{"$error":"#REF!"}},{"$f":"IF(V433>=#REF!,\"\",IF(V433<=#REF!,#REF!,#REF!))","v":{"$error":"#REF!"}},{"$f":"IF(V433>#REF!,\"\",#REF!)","v":{"$error":"#REF!"}},null,null,null,null,null,null,null,426]
[427,{"$f":"IF(A434>=#REF!,\"\",IF(A434<=#REF!,#REF!,#REF!))","v":{"$error":"#REF!"}},{"$f":"IF(A434>=#REF!,\"\",IF(A434<=#REF!,#REF!,#REF!))","v":{"$error":"#REF!"}},{"$f":"IF(A434>#REF!,\"\",#REF!)","v":{"$error":"#REF!"}},null,427,{"$f":"IF(F434>=#REF!,\"\",IF(F434<=#REF!,#REF!,#REF!))","v":{"$error":"#REF!"}},{"$f":"IF(F434>=#REF!,\"\",IF(F434<=#REF!,#REF!,#REF!))","v":{"$error":"#REF!"}},{"$f":"IF(F434>#REF!,\"\",PMT(#REF!/12,#REF!,-#REF!))","v":{"$error":"#REF!"}},null,null,null,null,427,{"$f":"IF(N434>#REF!,\"\",$L$7)","v":{"$error":"#REF!"}},{"$f":"IF(N434>=#REF!,\"\",IF(N434<=#REF!,#REF!,#REF!))","v":{"$error":"#REF!"}},{"$f":"IF(N434>#REF!,\"\",#REF!)","v":{"$error":"#REF!"}},null,null,null,null,427,{"$f":"IF(V434>#REF!,\"\",$T$7)","v":{"$error":"#REF!"}},{"$f":"IF(V434>=#REF!,\"\",IF(V434<=#REF!,#REF!,#REF!))","v":{"$error":"#REF!"}},{"$f":"IF(V434>#REF!,\"\",#REF!)","v":{"$error":"#REF!"}},null,null,null,null,null,null,null,427]
[428,{"$f":"IF(A435>=#REF!,\"\",IF(A435<=#REF!,#REF!,#REF!))","v":{"$error":"#REF!"}},{"$f":"IF(A435>=#REF!,\"\",IF(A435<=#REF!,#REF!,#REF!))","v":{"$error":"#REF!"}},{"$f":"IF(A435>#REF!,\"\",#REF!)","v":{"$error":"#REF!"}},null,428,{"$f":"IF(F435>=#REF!,\"\",IF(F435<=#REF!,#REF!,#REF!))","v":{"$error":"#REF!"}},{"$f":"IF(F435>=#REF!,\"\",IF(F435<=#REF!,#REF!,#REF!))","v":{"$error":"#REF!"}},{"$f":"IF(F435>#REF!,\"\",PMT(#REF!/12,#REF!,-#REF!))","v":{"$error":"#REF!"}},null,null,null,null,428,{"$f":"IF(N435>#REF!,\"\",$L$7)","v":{"$error":"#REF!"}},{"$f":"IF(N435>=#REF!,\"\",IF(N435<=#REF!,#REF!,#REF!))","v":{"$error":"#REF!"}},{"$f":"IF(N435>#REF!,\"\",#REF!)","v":{"$error":"#REF!"}},null,null,null,null,428,{"$f":"IF(V435>#REF!,\"\",$T$7)","v":{"$error":"#REF!"}},{"$f":"IF(V435>=#REF!,\"\",IF(V435<=#REF!,#REF!,#REF!))","v":{"$error":"#REF!"}},{"$f":"IF(V435>#REF!,\"\",#REF!)","v":{"$error":"#REF!"}},null,null,null,null,null,null,null,428]
[429,{"$f":"IF(A436>=#REF!,\"\",IF(A436<=#REF!,#REF!,#REF!))","v":{"$error":"#REF!"}},{"$f":"IF(A436>=#REF!,\"\",IF(A436<=#REF!,#REF!,#REF!))","v":{"$error":"#REF!"}},{"$f":"IF(A436>#REF!,\"\",#REF!)","v":{"$error":"#REF!"}},null,429,{"$f":"IF(F436>=#REF!,\"\",IF(F436<=#REF!,#REF!,#REF!))","v":{"$error":"#REF!"}},{"$f":"IF(F436>=#REF!,\"\",IF(F436<=#REF!,#REF!,#REF!))","v":{"$error":"#REF!"}},{"$f":"IF(F436>#REF!,\"\",PMT(#REF!/12,#REF!,-#REF!))","v":{"$error":"#REF!"}},null,null,null,null,429,{"$f":"IF(N436>#REF!,\"\",$L$7)","v":{"$error":"#REF!"}},{"$f":"IF(N436>=#REF!,\"\",IF(N436<=#REF!,#REF!,#REF!))","v":{"$error":"#REF!"}},{"$f":"IF(N436>#REF!,\"\",#REF!)","v":{"$error":"#REF!"}},null,null,null,null,429,{"$f":"IF(V436>#REF!,\"\",$T$7)","v":{"$error":"#REF!"}},{"$f":"IF(V436>=#REF!,\"\",IF(V436<=#REF!,#REF!,#REF!))","v":{"$error":"#REF!"}},{"$f":"IF(V436>#REF!,\"\",#REF!)","v":{"$error":"#REF!"}},null,null,null,null,null,null,null,429]
[430,{"$f":"IF(A437>=#REF!,\"\",IF(A437<=#REF!,#REF!,#REF!))","v":{"$error":"#REF!"}},{"$f":"IF(A437>=#REF!,\"\",IF(A437<=#REF!,#REF!,#REF!))","v":{"$error":"#REF!"}},{"$f":"IF(A437>#REF!,\"\",#REF!)","v":{"$error":"#REF!"}},null,430,{"$f":"IF(F437>=#REF!,\"\",IF(F437<=#REF!,#REF!,#REF!))","v":{"$error":"#REF!"}},{"$f":"IF(F437>=#REF!,\"\",IF(F437<=#REF!,#REF!,#REF!))","v":{"$error":"#REF!"}},{"$f":"IF(F437>#REF!,\"\",PMT(#REF!/12,#REF!,-#REF!))","v":{"$error":"#REF!"}},null,null,null,null,430,{"$f":"IF(N437>#REF!,\"\",$L$7)","v":{"$error":"#REF!"}},{"$f":"IF(N437>=#REF!,\"\",IF(N437<=#REF!,#REF!,#REF!))","v":{"$error":"#REF!"}},{"$f":"IF(N437>#REF!,\"\",#REF!)","v":{"$error":"#REF!"}},null,null,null,null,430,{"$f":"IF(V437>#REF!,\"\",$T$7)","v":{"$error":"#REF!"}},{"$f":"IF(V437>=#REF!,\"\",IF(V437<=#REF!,#REF!,#REF!))","v":{"$error":"#REF!"}},{"$f":"IF(V437>#REF!,\"\",#REF!)","v":{"$error":"#REF!"}},null,null,null,null,null,null,null,430]
[431,{"$f":"IF(A438>=#REF!,\"\",IF(A438<=#REF!,#REF!,#REF!))","v":{"$error":"#REF!"}},{"$f":"IF(A438>=#REF!,\"\",IF(A438<=#REF!,#REF!,#REF!))","v":{"$error":"#REF!"}},{"$f":"IF(A438>#REF!,\"\",#REF!)","v":{"$error":"#REF!"}},null,431,{"$f":"IF(F438>=#REF!,\"\",IF(F438<=#REF!,#REF!,#REF!))","v":{"$error":"#REF!"}},{"$f":"IF(F438>=#REF!,\"\",IF(F438<=#REF!,#REF!,#REF!))","v":{"$error":"#REF!"}},{"$f":"IF(F438>#REF!,\"\",PMT(#REF!/12,#REF!,-#REF!))","v":{"$error":"#REF!"}},null,null,null,null,431,{"$f":"IF(N438>#REF!,\"\",$L$7)","v":{"$error":"#REF!"}},{"$f":"IF(N438>=#REF!,\"\",IF(N438<=#REF!,#REF!,#REF!))","v":{"$error":"#REF!"}},{"$f":"IF(N438>#REF!,\"\",#REF!)","v":{"$error":"#REF!"}},null,null,null,null,431,{"$f":"IF(V438>#REF!,\"\",$T$7)","v":{"$error":"#REF!"}},{"$f":"IF(V438>=#REF!,\"\",IF(V438<=#REF!,#REF!,#REF!))","v":{"$error":"#REF!"}},{"$f":"IF(V438>#REF!,\"\",#REF!)","v":{"$error":"#REF!"}},null,null,null,null,null,null,null,431]
[432,{"$f":"IF(A439>=#REF!,\"\",IF(A439<=#REF!,#REF!,#REF!))","v":{"$error":"#REF!"}},{"$f":"IF(A439>=#REF!,\"\",IF(A439<=#REF!,#REF!,#REF!))","v":{"$error":"#REF!"}},{"$f":"IF(A439>#REF!,\"\",#REF!)","v":{"$error":"#REF!"}},null,432,{"$f":"IF(F439>=#REF!,\"\",IF(F439<=#REF!,#REF!,#REF!))","v":{"$error":"#REF!"}},{"$f":"IF(F439>=#REF!,\"\",IF(F439<=#REF!,#REF!,#REF!))","v":{"$error":"#REF!"}},{"$f":"IF(F439>#REF!,\"\",PMT(#REF!/12,#REF!,-#REF!))","v":{"$error":"#REF!"}},null,null,null,null,432,{"$f":"IF(N439>#REF!,\"\",$L$7)","v":{"$error":"#REF!"}},{"$f":"IF(N439>=#REF!,\"\",IF(N439<=#REF!,#REF!,#REF!))","v":{"$error":"#REF!"}},{"$f":"IF(N439>#REF!,\"\",#REF!)","v":{"$error":"#REF!"}},null,null,null,null,432,{"$f":"IF(V439>#REF!,\"\",$T$7)","v":{"$error":"#REF!"}},{"$f":"IF(V439>=#REF!,\"\",IF(V439<=#REF!,#REF!,#REF!))","v":{"$error":"#REF!"}},{"$f":"IF(V439>#REF!,\"\",#REF!)","v":{"$error":"#REF!"}},null,null,null,null,null,null,null,432]
[433,{"$f":"IF(A440>=#REF!,\"\",IF(A440<=#REF!,#REF!,#REF!))","v":{"$error":"#REF!"}},{"$f":"IF(A440>=#REF!,\"\",IF(A440<=#REF!,#REF!,#REF!))","v":{"$error":"#REF!"}},{"$f":"IF(A440>#REF!,\"\",#REF!)","v":{"$error":"#REF!"}},null,433,{"$f":"IF(F440>=#REF!,\"\",IF(F440<=#REF!,#REF!,#REF!))","v":{"$error":"#REF!"}},{"$f":"IF(F440>=#REF!,\"\",IF(F440<=#REF!,#REF!,#REF!))","v":{"$error":"#REF!"}},{"$f":"IF(F440>#REF!,\"\",PMT(#REF!/12,#REF!,-#REF!))","v":{"$error":"#REF!"}},null,null,null,null,433,{"$f":"IF(N440>#REF!,\"\",$L$7)","v":{"$error":"#REF!"}},{"$f":"IF(N440>=#REF!,\"\",IF(N440<=#REF!,#REF!,#REF!))","v":{"$error":"#REF!"}},{"$f":"IF(N440>#REF!,\"\",#REF!)","v":{"$error":"#REF!"}},null,null,null,null,433,{"$f":"IF(V440>#REF!,\"\",$T$7)","v":{"$error":"#REF!"}},{"$f":"IF(V440>=#REF!,\"\",IF(V440<=#REF!,#REF!,#REF!))","v":{"$error":"#REF!"}},{"$f":"IF(V440>#REF!,\"\",#REF!)","v":{"$error":"#REF!"}},null,null,null,null,null,null,null,433]
[434,{"$f":"IF(A441>=#REF!,\"\",IF(A441<=#REF!,#REF!,#REF!))","v":{"$error":"#REF!"}},{"$f":"IF(A441>=#REF!,\"\",IF(A441<=#REF!,#REF!,#REF!))","v":{"$error":"#REF!"}},{"$f":"IF(A441>#REF!,\"\",#REF!)","v":{"$error":"#REF!"}},null,434,{"$f":"IF(F441>=#REF!,\"\",IF(F441<=#REF!,#REF!,#REF!))","v":{"$error":"#REF!"}},{"$f":"IF(F441>=#REF!,\"\",IF(F441<=#REF!,#REF!,#REF!))","v":{"$error":"#REF!"}},{"$f":"IF(F441>#REF!,\"\",PMT(#REF!/12,#REF!,-#REF!))","v":{"$error":"#REF!"}},null,null,null,null,434,{"$f":"IF(N441>#REF!,\"\",$L$7)","v":{"$error":"#REF!"}},{"$f":"IF(N441>=#REF!,\"\",IF(N441<=#REF!,#REF!,#REF!))","v":{"$error":"#REF!"}},{"$f":"IF(N441>#REF!,\"\",#REF!)","v":{"$error":"#REF!"}},null,null,null,null,434,{"$f":"IF(V441>#REF!,\"\",$T$7)","v":{"$error":"#REF!"}},{"$f":"IF(V441>=#REF!,\"\",IF(V441<=#REF!,#REF!,#REF!))","v":{"$error":"#REF!"}},{"$f":"IF(V441>#REF!,\"\",#REF!)","v":{"$error":"#REF!"}},null,null,null,null,null,null,null,434]
[435,{"$f":"IF(A442>=#REF!,\"\",IF(A442<=#REF!,#REF!,#REF!))","v":{"$error":"#REF!"}},{"$f":"IF(A442>=#REF!,\"\",IF(A442<=#REF!,#REF!,#REF!))","v":{"$error":"#REF!"}},{"$f":"IF(A442>#REF!,\"\",#REF!)","v":{"$error":"#REF!"}},null,435,{"$f":"IF(F442>=#REF!,\"\",IF(F442<=#REF!,#REF!,#REF!))","v":{"$error":"#REF!"}},{"$f":"IF(F442>=#REF!,\"\",IF(F442<=#REF!,#REF!,#REF!))","v":{"$error":"#REF!"}},{"$f":"IF(F442>#REF!,\"\",PMT(#REF!/12,#REF!,-#REF!))","v":{"$error":"#REF!"}},null,null,null,null,435,{"$f":"IF(N442>#REF!,\"\",$L$7)","v":{"$error":"#REF!"}},{"$f":"IF(N442>=#REF!,\"\",IF(N442<=#REF!,#REF!,#REF!))","v":{"$error":"#REF!"}},{"$f":"IF(N442>#REF!,\"\",#REF!)","v":{"$error":"#REF!"}},null,null,null,null,435,{"$f":"IF(V442>#REF!,\"\",$T$7)","v":{"$error":"#REF!"}},{"$f":"IF(V442>=#REF!,\"\",IF(V442<=#REF!,#REF!,#REF!))","v":{"$error":"#REF!"}},{"$f":"IF(V442>#REF!,\"\",#REF!)","v":{"$error":"#REF!"}},null,null,null,null,null,null,null,435]
[436,{"$f":"IF(A443>=#REF!,\"\",IF(A443<=#REF!,#REF!,#REF!))","v":{"$error":"#REF!"}},{"$f":"IF(A443>=#REF!,\"\",IF(A443<=#REF!,#REF!,#REF!))","v":{"$error":"#REF!"}},{"$f":"IF(A443>#REF!,\"\",#REF!)","v":{"$error":"#REF!"}},null,436,{"$f":"IF(F443>=#REF!,\"\",IF(F443<=#REF!,#REF!,#REF!))","v":{"$error":"#REF!"}},{"$f":"IF(F443>=#REF!,\"\",IF(F443<=#REF!,#REF!,#REF!))","v":{"$error":"#REF!"}},{"$f":"IF(F443>#REF!,\"\",PMT(#REF!/12,#REF!,-#REF!))","v":{"$error":"#REF!"}},null,null,null,null,436,{"$f":"IF(N443>#REF!,\"\",$L$7)","v":{"$error":"#REF!"}},{"$f":"IF(N443>=#REF!,\"\",IF(N443<=#REF!,#REF!,#REF!))","v":{"$error":"#REF!"}},{"$f":"IF(N443>#REF!,\"\",#REF!)","v":{"$error":"#REF!"}},null,null,null,null,436,{"$f":"IF(V443>#REF!,\"\",$T$7)","v":{"$error":"#REF!"}},{"$f":"IF(V443>=#REF!,\"\",IF(V443<=#REF!,#REF!,#REF!))","v":{"$error":"#REF!"}},{"$f":"IF(V443>#REF!,\"\",#REF!)","v":{"$error":"#REF!"}},null,null,null,null,null,null,null,436]
[437,{"$f":"IF(A444>=#REF!,\"\",IF(A444<=#REF!,#REF!,#REF!))","v":{"$error":"#REF!"}},{"$f":"IF(A444>=#REF!,\"\",IF(A444<=#REF!,#REF!,#REF!))","v":{"$error":"#REF!"}},{"$f":"IF(A444>#REF!,\"\",#REF!)","v":{"$error":"#REF!"}},null,437,{"$f":"IF(F444>=#REF!,\"\",IF(F444<=#REF!,#REF!,#REF!))","v":{"$error":"#REF!"}},{"$f":"IF(F444>=#REF!,\"\",IF(F444<=#REF!,#REF!,#REF!))","v":{"$error":"#REF!"}},{"$f":"IF(F444>#REF!,\"\",PMT(#REF!/12,#REF!,-#REF!))","v":{"$error":"#REF!"}},null,null,null,null,437,{"$f":"IF(N444>#REF!,\"\",$L$7)","v":{"$error":"#REF!"}},{"$f":"IF(N444>=#REF!,\"\",IF(N444<=#REF!,#REF!,#REF!))","v":{"$error":"#REF!"}},{"$f":"IF(N444>#REF!,\"\",#REF!)","v":{"$error":"#REF!"}},null,null,null,null,437,{"$f":"IF(V444>#REF!,\"\",$T$7)","v":{"$error":"#REF!"}},{"$f":"IF(V444>=#REF!,\"\",IF(V444<=#REF!,#REF!,#REF!))","v":{"$error":"#REF!"}},{"$f":"IF(V444>#REF!,\"\",#REF!)","v":{"$error":"#REF!"}},null,null,null,null,null,null,null,437]
[438,{"$f":"IF(A445>=#REF!,\"\",IF(A445<=#REF!,#REF!,#REF!))","v":{"$error":"#REF!"}},{"$f":"IF(A445>=#REF!,\"\",IF(A445<=#REF!,#REF!,#REF!))","v":{"$error":"#REF!"}},{"$f":"IF(A445>#REF!,\"\",#REF!)","v":{"$error":"#REF!"}},null,438,{"$f":"IF(F445>=#REF!,\"\",IF(F445<=#REF!,#REF!,#REF!))","v":{"$error":"#REF!"}},{"$f":"IF(F445>=#REF!,\"\",IF(F445<=#REF!,#REF!,#REF!))","v":{"$error":"#REF!"}},{"$f":"IF(F445>#REF!,\"\",PMT(#REF!/12,#REF!,-#REF!))","v":{"$error":"#REF!"}},null,null,null,null,438,{"$f":"IF(N445>#REF!,\"\",$L$7)","v":{"$error":"#REF!"}},{"$f":"IF(N445>=#REF!,\"\",IF(N445<=#REF!,#REF!,#REF!))","v":{"$error":"#REF!"}},{"$f":"IF(N445>#REF!,\"\",#REF!)","v":{"$error":"#REF!"}},null,null,null,null,438,{"$f":"IF(V445>#REF!,\"\",$T$7)","v":{"$error":"#REF!"}},{"$f":"IF(V445>=#REF!,\"\",IF(V445<=#REF!,#REF!,#REF!))","v":{"$error":"#REF!"}},{"$f":"IF(V445>#REF!,\"\",#REF!)","v":{"$error":"#REF!"}},null,null,null,null,null,null,null,438]
[439,{"$f":"IF(A446>=#REF!,\"\",IF(A446<=#REF!,#REF!,#REF!))","v":{"$error":"#REF!"}},{"$f":"IF(A446>=#REF!,\"\",IF(A446<=#REF!,#REF!,#REF!))","v":{"$error":"#REF!"}},{"$f":"IF(A446>#REF!,\"\",#REF!)","v":{"$error":"#REF!"}},null,439,{"$f":"IF(F446>=#REF!,\"\",IF(F446<=#REF!,#REF!,#REF!))","v":{"$error":"#REF!"}},{"$f":"IF(F446>=#REF!,\"\",IF(F446<=#REF!,#REF!,#REF!))","v":{"$error":"#REF!"}},{"$f":"IF(F446>#REF!,\"\",PMT(#REF!/12,#REF!,-#REF!))","v":{"$error":"#REF!"}},null,null,null,null,439,{"$f":"IF(N446>#REF!,\"\",$L$7)","v":{"$error":"#REF!"}},{"$f":"IF(N446>=#REF!,\"\",IF(N446<=#REF!,#REF!,#REF!))","v":{"$error":"#REF!"}},{"$f":"IF(N446>#REF!,\"\",#REF!)","v":{"$error":"#REF!"}},null,null,null,null,439,{"$f":"IF(V446>#REF!,\"\",$T$7)","v":{"$error":"#REF!"}},{"$f":"IF(V446>=#REF!,\"\",IF(V446<=#REF!,#REF!,#REF!))","v":{"$error":"#REF!"}},{"$f":"IF(V446>#REF!,\"\",#REF!)","v":{"$error":"#REF!"}},null,null,null,null,null,null,null,439]
[440,{"$f":"IF(A447>=#REF!,\"\",IF(A447<=#REF!,#REF!,#REF!))","v":{"$error":"#REF!"}},{"$f":"IF(A447>=#REF!,\"\",IF(A447<=#REF!,#REF!,#REF!))","v":{"$error":"#REF!"}},{"$f":"IF(A447>#REF!,\"\",#REF!)","v":{"$error":"#REF!"}},null,440,{"$f":"IF(F447>=#REF!,\"\",IF(F447<=#REF!,#REF!,#REF!))","v":{"$error":"#REF!"}},{"$f":"IF(F447>=#REF!,\"\",IF(F447<=#REF!,#REF!,#REF!))","v":{"$error":"#REF!"}},{"$f":"IF(F447>#REF!,\"\",PMT(#REF!/12,#REF!,-#REF!))","v":{"$error":"#REF!"}},null,null,null,null,440,{"$f":"IF(N447>#REF!,\"\",$L$7)","v":{"$error":"#REF!"}},{"$f":"IF(N447>=#REF!,\"\",IF(N447<=#REF!,#REF!,#REF!))","v":{"$error":"#REF!"}},{"$f":"IF(N447>#REF!,\"\",#REF!)","v":{"$error":"#REF!"}},null,null,null,null,440,{"$f":"IF(V447>#REF!,\"\",$T$7)","v":{"$error":"#REF!"}},{"$f":"IF(V447>=#REF!,\"\",IF(V447<=#REF!,#REF!,#REF!))","v":{"$error":"#REF!"}},{"$f":"IF(V447>#REF!,\"\",#REF!)","v":{"$error":"#REF!"}},null,null,null,null,null,null,null,440]
[441,{"$f":"IF(A448>=#REF!,\"\",IF(A448<=#REF!,#REF!,#REF!))","v":{"$error":"#REF!"}},{"$f":"IF(A448>=#REF!,\"\",IF(A448<=#REF!,#REF!,#REF!))","v":{"$error":"#REF!"}},{"$f":"IF(A448>#REF!,\"\",#REF!)","v":{"$error":"#REF!"}},null,441,{"$f":"IF(F448>=#REF!,\"\",IF(F448<=#REF!,#REF!,#REF!))","v":{"$error":"#REF!"}},{"$f":"IF(F448>=#REF!,\"\",IF(F448<=#REF!,#REF!,#REF!))","v":{"$error":"#REF!"}},{"$f":"IF(F448>#REF!,\"\",PMT(#REF!/12,#REF!,-#REF!))","v":{"$error":"#REF!"}},null,null,null,null,441,{"$f":"IF(N448>#REF!,\"\",$L$7)","v":{"$error":"#REF!"}},{"$f":"IF(N448>=#REF!,\"\",IF(N448<=#REF!,#REF!,#REF!))","v":{"$error":"#REF!"}},{"$f":"IF(N448>#REF!,\"\",#REF!)","v":{"$error":"#REF!"}},null,null,null,null,441,{"$f":"IF(V448>#REF!,\"\",$T$7)","v":{"$error":"#REF!"}},{"$f":"IF(V448>=#REF!,\"\",IF(V448<=#REF!,#REF!,#REF!))","v":{"$error":"#REF!"}},{"$f":"IF(V448>#REF!,\"\",#REF!)","v":{"$error":"#REF!"}},null,null,null,null,null,null,null,441]
[442,{"$f":"IF(A449>=#REF!,\"\",IF(A449<=#REF!,#REF!,#REF!))","v":{"$error":"#REF!"}},{"$f":"IF(A449>=#REF!,\"\",IF(A449<=#REF!,#REF!,#REF!))","v":{"$error":"#REF!"}},{"$f":"IF(A449>#REF!,\"\",#REF!)","v":{"$error":"#REF!"}},null,442,{"$f":"IF(F449>=#REF!,\"\",IF(F449<=#REF!,#REF!,#REF!))","v":{"$error":"#REF!"}},{"$f":"IF(F449>=#REF!,\"\",IF(F449<=#REF!,#REF!,#REF!))","v":{"$error":"#REF!"}},{"$f":"IF(F449>#REF!,\"\",PMT(#REF!/12,#REF!,-#REF!))","v":{"$error":"#REF!"}},null,null,null,null,442,{"$f":"IF(N449>#REF!,\"\",$L$7)","v":{"$error":"#REF!"}},{"$f":"IF(N449>=#REF!,\"\",IF(N449<=#REF!,#REF!,#REF!))","v":{"$error":"#REF!"}},{"$f":"IF(N449>#REF!,\"\",#REF!)","v":{"$error":"#REF!"}},null,null,null,null,442,{"$f":"IF(V449>#REF!,\"\",$T$7)","v":{"$error":"#REF!"}},{"$f":"IF(V449>=#REF!,\"\",IF(V449<=#REF!,#REF!,#REF!))","v":{"$error":"#REF!"}},{"$f":"IF(V449>#REF!,\"\",#REF!)","v":{"$error":"#REF!"}},null,null,null,null,null,null,null,442]
[443,{"$f":"IF(A450>=#REF!,\"\",IF(A450<=#REF!,#REF!,#REF!))","v":{"$error":"#REF!"}},{"$f":"IF(A450>=#REF!,\"\",IF(A450<=#REF!,#REF!,#REF!))","v":{"$error":"#REF!"}},{"$f":"IF(A450>#REF!,\"\",#REF!)","v":{"$error":"#REF!"}},null,443,{"$f":"IF(F450>=#REF!,\"\",IF(F450<=#REF!,#REF!,#REF!))","v":{"$error":"#REF!"}},{"$f":"IF(F450>=#REF!,\"\",IF(F450<=#REF!,#REF!,#REF!))","v":{"$error":"#REF!"}},{"$f":"IF(F450>#REF!,\"\",PMT(#REF!/12,#REF!,-#REF!))","v":{"$error":"#REF!"}},null,null,null,null,443,{"$f":"IF(N450>#REF!,\"\",$L$7)","v":{"$error":"#REF!"}},{"$f":"IF(N450>=#REF!,\"\",IF(N450<=#REF!,#REF!,#REF!))","v":{"$error":"#REF!"}},{"$f":"IF(N450>#REF!,\"\",#REF!)","v":{"$error":"#REF!"}},null,null,null,null,443,{"$f":"IF(V450>#REF!,\"\",$T$7)","v":{"$error":"#REF!"}},{"$f":"IF(V450>=#REF!,\"\",IF(V450<=#REF!,#REF!,#REF!))","v":{"$error":"#REF!"}},{"$f":"IF(V450>#REF!,\"\",#REF!)","v":{"$error":"#REF!"}},null,null,null,null,null,null,null,443]
[444,{"$f":"IF(A451>=#REF!,\"\",IF(A451<=#REF!,#REF!,#REF!))","v":{"$error":"#REF!"}},{"$f":"IF(A451>=#REF!,\"\",IF(A451<=#REF!,#REF!,#REF!))","v":{"$error":"#REF!"}},{"$f":"IF(A451>#REF!,\"\",#REF!)","v":{"$error":"#REF!"}},null,444,{"$f":"IF(F451>=#REF!,\"\",IF(F451<=#REF!,#REF!,#REF!))","v":{"$error":"#REF!"}},{"$f":"IF(F451>=#REF!,\"\",IF(F451<=#REF!,#REF!,#REF!))","v":{"$error":"#REF!"}},{"$f":"IF(F451>#REF!,\"\",PMT(#REF!/12,#REF!,-#REF!))","v":{"$error":"#REF!"}},null,null,null,null,444,{"$f":"IF(N451>#REF!,\"\",$L$7)","v":{"$error":"#REF!"}},{"$f":"IF(N451>=#REF!,\"\",IF(N451<=#REF!,#REF!,#REF!))","v":{"$error":"#REF!"}},{"$f":"IF(N451>#REF!,\"\",#REF!)","v":{"$error":"#REF!"}},null,null,null,null,444,{"$f":"IF(V451>#REF!,\"\",$T$7)","v":{"$error":"#REF!"}},{"$f":"IF(V451>=#REF!,\"\",IF(V451<=#REF!,#REF!,#REF!))","v":{"$error":"#REF!"}},{"$f":"IF(V451>#REF!,\"\",#REF!)","v":{"$error":"#REF!"}},null,null,null,null,null,null,null,444]
[445,{"$f":"IF(A452>=#REF!,\"\",IF(A452<=#REF!,#REF!,#REF!))","v":{"$error":"#REF!"}},{"$f":"IF(A452>=#REF!,\"\",IF(A452<=#REF!,#REF!,#REF!))","v":{"$error":"#REF!"}},{"$f":"IF(A452>#REF!,\"\",#REF!)","v":{"$error":"#REF!"}},null,445,{"$f":"IF(F452>=#REF!,\"\",IF(F452<=#REF!,#REF!,#REF!))","v":{"$error":"#REF!"}},{"$f":"IF(F452>=#REF!,\"\",IF(F452<=#REF!,#REF!,#REF!))","v":{"$error":"#REF!"}},{"$f":"IF(F452>#REF!,\"\",PMT(#REF!/12,#REF!,-#REF!))","v":{"$error":"#REF!"}},null,null,null,null,445,{"$f":"IF(N452>#REF!,\"\",$L$7)","v":{"$error":"#REF!"}},{"$f":"IF(N452>=#REF!,\"\",IF(N452<=#REF!,#REF!,#REF!))","v":{"$error":"#REF!"}},{"$f":"IF(N452>#REF!,\"\",#REF!)","v":{"$error":"#REF!"}},null,null,null,null,445,{"$f":"IF(V452>#REF!,\"\",$T$7)","v":{"$error":"#REF!"}},{"$f":"IF(V452>=#REF!,\"\",IF(V452<=#REF!,#REF!,#REF!))","v":{"$error":"#REF!"}},{"$f":"IF(V452>#REF!,\"\",#REF!)","v":{"$error":"#REF!"}},null,null,null,null,null,null,null,445]
[446,{"$f":"IF(A453>=#REF!,\"\",IF(A453<=#REF!,#REF!,#REF!))","v":{"$error":"#REF!"}},{"$f":"IF(A453>=#REF!,\"\",IF(A453<=#REF!,#REF!,#REF!))","v":{"$error":"#REF!"}},{"$f":"IF(A453>#REF!,\"\",#REF!)","v":{"$error":"#REF!"}},null,446,{"$f":"IF(F453>=#REF!,\"\",IF(F453<=#REF!,#REF!,#REF!))","v":{"$error":"#REF!"}},{"$f":"IF(F453>=#REF!,\"\",IF(F453<=#REF!,#REF!,#REF!))","v":{"$error":"#REF!"}},{"$f":"IF(F453>#REF!,\"\",PMT(#REF!/12,#REF!,-#REF!))","v":{"$error":"#REF!"}},null,null,null,null,446,{"$f":"IF(N453>#REF!,\"\",$L$7)","v":{"$error":"#REF!"}},{"$f":"IF(N453>=#REF!,\"\",IF(N453<=#REF!,#REF!,#REF!))","v":{"$error":"#REF!"}},{"$f":"IF(N453>#REF!,\"\",#REF!)","v":{"$error":"#REF!"}},null,null,null,null,446,{"$f":"IF(V453>#REF!,\"\",$T$7)","v":{"$error":"#REF!"}},{"$f":"IF(V453>=#REF!,\"\",IF(V453<=#REF!,#REF!,#REF!))","v":{"$error":"#REF!"}},{"$f":"IF(V453>#REF!,\"\",#REF!)","v":{"$error":"#REF!"}},null,null,null,null,null,null,null,446]
[447,{"$f":"IF(A454>=#REF!,\"\",IF(A454<=#REF!,#REF!,#REF!))","v":{"$error":"#REF!"}},{"$f":"IF(A454>=#REF!,\"\",IF(A454<=#REF!,#REF!,#REF!))","v":{"$error":"#REF!"}},{"$f":"IF(A454>#REF!,\"\",#REF!)","v":{"$error":"#REF!"}},null,447,{"$f":"IF(F454>=#REF!,\"\",IF(F454<=#REF!,#REF!,#REF!))","v":{"$error":"#REF!"}},{"$f":"IF(F454>=#REF!,\"\",IF(F454<=#REF!,#REF!,#REF!))","v":{"$error":"#REF!"}},{"$f":"IF(F454>#REF!,\"\",PMT(#REF!/12,#REF!,-#REF!))","v":{"$error":"#REF!"}},null,null,null,null,447,{"$f":"IF(N454>#REF!,\"\",$L$7)","v":{"$error":"#REF!"}},{"$f":"IF(N454>=#REF!,\"\",IF(N454<=#REF!,#REF!,#REF!))","v":{"$error":"#REF!"}},{"$f":"IF(N454>#REF!,\"\",#REF!)","v":{"$error":"#REF!"}},null,null,null,null,447,{"$f":"IF(V454>#REF!,\"\",$T$7)","v":{"$error":"#REF!"}},{"$f":"IF(V454>=#REF!,\"\",IF(V454<=#REF!,#REF!,#REF!))","v":{"$error":"#REF!"}},{"$f":"IF(V454>#REF!,\"\",#REF!)","v":{"$error":"#REF!"}},null,null,null,null,null,null,null,447]
[448,{"$f":"IF(A455>=#REF!,\"\",IF(A455<=#REF!,#REF!,#REF!))","v":{"$error":"#REF!"}},{"$f":"IF(A455>=#REF!,\"\",IF(A455<=#REF!,#REF!,#REF!))","v":{"$error":"#REF!"}},{"$f":"IF(A455>#REF!,\"\",#REF!)","v":{"$error":"#REF!"}},null,448,{"$f":"IF(F455>=#REF!,\"\",IF(F455<=#REF!,#REF!,#REF!))","v":{"$error":"#REF!"}},{"$f":"IF(F455>=#REF!,\"\",IF(F455<=#REF!,#REF!,#REF!))","v":{"$error":"#REF!"}},{"$f":"IF(F455>#REF!,\"\",PMT(#REF!/12,#REF!,-#REF!))","v":{"$error":"#REF!"}},null,null,null,null,448,{"$f":"IF(N455>#REF!,\"\",$L$7)","v":{"$error":"#REF!"}},{"$f":"IF(N455>=#REF!,\"\",IF(N455<=#REF!,#REF!,#REF!))","v":{"$error":"#REF!"}},{"$f":"IF(N455>#REF!,\"\",#REF!)","v":{"$error":"#REF!"}},null,null,null,null,448,{"$f":"IF(V455>#REF!,\"\",$T$7)","v":{"$error":"#REF!"}},{"$f":"IF(V455>=#REF!,\"\",IF(V455<=#REF!,#REF!,#REF!))","v":{"$error":"#REF!"}},{"$f":"IF(V455>#REF!,\"\",#REF!)","v":{"$error":"#REF!"}},null,null,null,null,null,null,null,448]
[449,{"$f":"IF(A456>=#REF!,\"\",IF(A456<=#REF!,#REF!,#REF!))","v":{"$error":"#REF!"}},{"$f":"IF(A456>=#REF!,\"\",IF(A456<=#REF!,#REF!,#REF!))","v":{"$error":"#REF!"}},{"$f":"IF(A456>#REF!,\"\",#REF!)","v":{"$error":"#REF!"}},null,449,{"$f":"IF(F456>=#REF!,\"\",IF(F456<=#REF!,#REF!,#REF!))","v":{"$error":"#REF!"}},{"$f":"IF(F456>=#REF!,\"\",IF(F456<=#REF!,#REF!,#REF!))","v":{"$error":"#REF!"}},{"$f":"IF(F456>#REF!,\"\",PMT(#REF!/12,#REF!,-#REF!))","v":{"$error":"#REF!"}},null,null,null,null,449,{"$f":"IF(N456>#REF!,\"\",$L$7)","v":{"$error":"#REF!"}},{"$f":"IF(N456>=#REF!,\"\",IF(N456<=#REF!,#REF!,#REF!))","v":{"$error":"#REF!"}},{"$f":"IF(N456>#REF!,\"\",#REF!)","v":{"$error":"#REF!"}},null,null,null,null,449,{"$f":"IF(V456>#REF!,\"\",$T$7)","v":{"$error":"#REF!"}},{"$f":"IF(V456>=#REF!,\"\",IF(V456<=#REF!,#REF!,#REF!))","v":{"$error":"#REF!"}},{"$f":"IF(V456>#REF!,\"\",#REF!)","v":{"$error":"#REF!"}},null,null,null,null,null,null,null,449]
[450,{"$f":"IF(A457>=#REF!,\"\",IF(A457<=#REF!,#REF!,#REF!))","v":{"$error":"#REF!"}},{"$f":"IF(A457>=#REF!,\"\",IF(A457<=#REF!,#REF!,#REF!))","v":{"$error":"#REF!"}},{"$f":"IF(A457>#REF!,\"\",#REF!)","v":{"$error":"#REF!"}},null,450,{"$f":"IF(F457>=#REF!,\"\",IF(F457<=#REF!,#REF!,#REF!))","v":{"$error":"#REF!"}},{"$f":"IF(F457>=#REF!,\"\",IF(F457<=#REF!,#REF!,#REF!))","v":{"$error":"#REF!"}},{"$f":"IF(F457>#REF!,\"\",PMT(#REF!/12,#REF!,-#REF!))","v":{"$error":"#REF!"}},null,null,null,null,450,{"$f":"IF(N457>#REF!,\"\",$L$7)","v":{"$error":"#REF!"}},{"$f":"IF(N457>=#REF!,\"\",IF(N457<=#REF!,#REF!,#REF!))","v":{"$error":"#REF!"}},{"$f":"IF(N457>#REF!,\"\",#REF!)","v":{"$error":"#REF!"}},null,null,null,null,450,{"$f":"IF(V457>#REF!,\"\",$T$7)","v":{"$error":"#REF!"}},{"$f":"IF(V457>=#REF!,\"\",IF(V457<=#REF!,#REF!,#REF!))","v":{"$error":"#REF!"}},{"$f":"IF(V457>#REF!,\"\",#REF!)","v":{"$error":"#REF!"}},null,null,null,null,null,null,null,450]
[451,{"$f":"IF(A458>=#REF!,\"\",IF(A458<=#REF!,#REF!,#REF!))","v":{"$error":"#REF!"}},{"$f":"IF(A458>=#REF!,\"\",IF(A458<=#REF!,#REF!,#REF!))","v":{"$error":"#REF!"}},{"$f":"IF(A458>#REF!,\"\",#REF!)","v":{"$error":"#REF!"}},null,451,{"$f":"IF(F458>=#REF!,\"\",IF(F458<=#REF!,#REF!,#REF!))","v":{"$error":"#REF!"}},{"$f":"IF(F458>=#REF!,\"\",IF(F458<=#REF!,#REF!,#REF!))","v":{"$error":"#REF!"}},{"$f":"IF(F458>#REF!,\"\",PMT(#REF!/12,#REF!,-#REF!))","v":{"$error":"#REF!"}},null,null,null,null,451,{"$f":"IF(N458>#REF!,\"\",$L$7)","v":{"$error":"#REF!"}},{"$f":"IF(N458>=#REF!,\"\",IF(N458<=#REF!,#REF!,#REF!))","v":{"$error":"#REF!"}},{"$f":"IF(N458>#REF!,\"\",#REF!)","v":{"$error":"#REF!"}},null,null,null,null,451,{"$f":"IF(V458>#REF!,\"\",$T$7)","v":{"$error":"#REF!"}},{"$f":"IF(V458>=#REF!,\"\",IF(V458<=#REF!,#REF!,#REF!))","v":{"$error":"#REF!"}},{"$f":"IF(V458>#REF!,\"\",#REF!)","v":{"$error":"#REF!"}},null,null,null,null,null,null,null,451]
[452,{"$f":"IF(A459>=#REF!,\"\",IF(A459<=#REF!,#REF!,#REF!))","v":{"$error":"#REF!"}},{"$f":"IF(A459>=#REF!,\"\",IF(A459<=#REF!,#REF!,#REF!))","v":{"$error":"#REF!"}},{"$f":"IF(A459>#REF!,\"\",#REF!)","v":{"$error":"#REF!"}},null,452,{"$f":"IF(F459>=#REF!,\"\",IF(F459<=#REF!,#REF!,#REF!))","v":{"$error":"#REF!"}},{"$f":"IF(F459>=#REF!,\"\",IF(F459<=#REF!,#REF!,#REF!))","v":{"$error":"#REF!"}},{"$f":"IF(F459>#REF!,\"\",PMT(#REF!/12,#REF!,-#REF!))","v":{"$error":"#REF!"}},null,null,null,null,452,{"$f":"IF(N459>#REF!,\"\",$L$7)","v":{"$error":"#REF!"}},{"$f":"IF(N459>=#REF!,\"\",IF(N459<=#REF!,#REF!,#REF!))","v":{"$error":"#REF!"}},{"$f":"IF(N459>#REF!,\"\",#REF!)","v":{"$error":"#REF!"}},null,null,null,null,452,{"$f":"IF(V459>#REF!,\"\",$T$7)","v":{"$error":"#REF!"}},{"$f":"IF(V459>=#REF!,\"\",IF(V459<=#REF!,#REF!,#REF!))","v":{"$error":"#REF!"}},{"$f":"IF(V459>#REF!,\"\",#REF!)","v":{"$error":"#REF!"}},null,null,null,null,null,null,null,452]
[453,{"$f":"IF(A460>=#REF!,\"\",IF(A460<=#REF!,#REF!,#REF!))","v":{"$error":"#REF!"}},{"$f":"IF(A460>=#REF!,\"\",IF(A460<=#REF!,#REF!,#REF!))","v":{"$error":"#REF!"}},{"$f":"IF(A460>#REF!,\"\",#REF!)","v":{"$error":"#REF!"}},null,453,{"$f":"IF(F460>=#REF!,\"\",IF(F460<=#REF!,#REF!,#REF!))","v":{"$error":"#REF!"}},{"$f":"IF(F460>=#REF!,\"\",IF(F460<=#REF!,#REF!,#REF!))","v":{"$error":"#REF!"}},{"$f":"IF(F460>#REF!,\"\",PMT(#REF!/12,#REF!,-#REF!))","v":{"$error":"#REF!"}},null,null,null,null,453,{"$f":"IF(N460>#REF!,\"\",$L$7)","v":{"$error":"#REF!"}},{"$f":"IF(N460>=#REF!,\"\",IF(N460<=#REF!,#REF!,#REF!))","v":{"$error":"#REF!"}},{"$f":"IF(N460>#REF!,\"\",#REF!)","v":{"$error":"#REF!"}},null,null,null,null,453,{"$f":"IF(V460>#REF!,\"\",$T$7)","v":{"$error":"#REF!"}},{"$f":"IF(V460>=#REF!,\"\",IF(V460<=#REF!,#REF!,#REF!))","v":{"$error":"#REF!"}},{"$f":"IF(V460>#REF!,\"\",#REF!)","v":{"$error":"#REF!"}},null,null,null,null,null,null,null,453]
[454,{"$f":"IF(A461>=#REF!,\"\",IF(A461<=#REF!,#REF!,#REF!))","v":{"$error":"#REF!"}},{"$f":"IF(A461>=#REF!,\"\",IF(A461<=#REF!,#REF!,#REF!))","v":{"$error":"#REF!"}},{"$f":"IF(A461>#REF!,\"\",#REF!)","v":{"$error":"#REF!"}},null,454,{"$f":"IF(F461>=#REF!,\"\",IF(F461<=#REF!,#REF!,#REF!))","v":{"$error":"#REF!"}},{"$f":"IF(F461>=#REF!,\"\",IF(F461<=#REF!,#REF!,#REF!))","v":{"$error":"#REF!"}},{"$f":"IF(F461>#REF!,\"\",PMT(#REF!/12,#REF!,-#REF!))","v":{"$error":"#REF!"}},null,null,null,null,454,{"$f":"IF(N461>#REF!,\"\",$L$7)","v":{"$error":"#REF!"}},{"$f":"IF(N461>=#REF!,\"\",IF(N461<=#REF!,#REF!,#REF!))","v":{"$error":"#REF!"}},{"$f":"IF(N461>#REF!,\"\",#REF!)","v":{"$error":"#REF!"}},null,null,null,null,454,{"$f":"IF(V461>#REF!,\"\",$T$7)","v":{"$error":"#REF!"}},{"$f":"IF(V461>=#REF!,\"\",IF(V461<=#REF!,#REF!,#REF!))","v":{"$error":"#REF!"}},{"$f":"IF(V461>#REF!,\"\",#REF!)","v":{"$error":"#REF!"}},null,null,null,null,null,null,null,454]
[455,{"$f":"IF(A462>=#REF!,\"\",IF(A462<=#REF!,#REF!,#REF!))","v":{"$error":"#REF!"}},{"$f":"IF(A462>=#REF!,\"\",IF(A462<=#REF!,#REF!,#REF!))","v":{"$error":"#REF!"}},{"$f":"IF(A462>#REF!,\"\",#REF!)","v":{"$error":"#REF!"}},null,455,{"$f":"IF(F462>=#REF!,\"\",IF(F462<=#REF!,#REF!,#REF!))","v":{"$error":"#REF!"}},{"$f":"IF(F462>=#REF!,\"\",IF(F462<=#REF!,#REF!,#REF!))","v":{"$error":"#REF!"}},{"$f":"IF(F462>#REF!,\"\",PMT(#REF!/12,#REF!,-#REF!))","v":{"$error":"#REF!"}},null,null,null,null,455,{"$f":"IF(N462>#REF!,\"\",$L$7)","v":{"$error":"#REF!"}},{"$f":"IF(N462>=#REF!,\"\",IF(N462<=#REF!,#REF!,#REF!))","v":{"$error":"#REF!"}},{"$f":"IF(N462>#REF!,\"\",#REF!)","v":{"$error":"#REF!"}},null,null,null,null,455,{"$f":"IF(V462>#REF!,\"\",$T$7)","v":{"$error":"#REF!"}},{"$f":"IF(V462>=#REF!,\"\",IF(V462<=#REF!,#REF!,#REF!))","v":{"$error":"#REF!"}},{"$f":"IF(V462>#REF!,\"\",#REF!)","v":{"$error":"#REF!"}},null,null,null,null,null,null,null,455]
[456,{"$f":"IF(A463>=#REF!,\"\",IF(A463<=#REF!,#REF!,#REF!))","v":{"$error":"#REF!"}},{"$f":"IF(A463>=#REF!,\"\",IF(A463<=#REF!,#REF!,#REF!))","v":{"$error":"#REF!"}},{"$f":"IF(A463>#REF!,\"\",#REF!)","v":{"$error":"#REF!"}},null,456,{"$f":"IF(F463>=#REF!,\"\",IF(F463<=#REF!,#REF!,#REF!))","v":{"$error":"#REF!"}},{"$f":"IF(F463>=#REF!,\"\",IF(F463<=#REF!,#REF!,#REF!))","v":{"$error":"#REF!"}},{"$f":"IF(F463>#REF!,\"\",PMT(#REF!/12,#REF!,-#REF!))","v":{"$error":"#REF!"}},null,null,null,null,456,{"$f":"IF(N463>#REF!,\"\",$L$7)","v":{"$error":"#REF!"}},{"$f":"IF(N463>=#REF!,\"\",IF(N463<=#REF!,#REF!,#REF!))","v":{"$error":"#REF!"}},{"$f":"IF(N463>#REF!,\"\",#REF!)","v":{"$error":"#REF!"}},null,null,null,null,456,{"$f":"IF(V463>#REF!,\"\",$T$7)","v":{"$error":"#REF!"}},{"$f":"IF(V463>=#REF!,\"\",IF(V463<=#REF!,#REF!,#REF!))","v":{"$error":"#REF!"}},{"$f":"IF(V463>#REF!,\"\",#REF!)","v":{"$error":"#REF!"}},null,null,null,null,null,null,null,456]
[457,{"$f":"IF(A464>=#REF!,\"\",IF(A464<=#REF!,#REF!,#REF!))","v":{"$error":"#REF!"}},{"$f":"IF(A464>=#REF!,\"\",IF(A464<=#REF!,#REF!,#REF!))","v":{"$error":"#REF!"}},{"$f":"IF(A464>#REF!,\"\",#REF!)","v":{"$error":"#REF!"}},null,457,{"$f":"IF(F464>=#REF!,\"\",IF(F464<=#REF!,#REF!,#REF!))","v":{"$error":"#REF!"}},{"$f":"IF(F464>=#REF!,\"\",IF(F464<=#REF!,#REF!,#REF!))","v":{"$error":"#REF!"}},{"$f":"IF(F464>#REF!,\"\",PMT(#REF!/12,#REF!,-#REF!))","v":{"$error":"#REF!"}},null,null,null,null,457,{"$f":"IF(N464>#REF!,\"\",$L$7)","v":{"$error":"#REF!"}},{"$f":"IF(N464>=#REF!,\"\",IF(N464<=#REF!,#REF!,#REF!))","v":{"$error":"#REF!"}},{"$f":"IF(N464>#REF!,\"\",#REF!)","v":{"$error":"#REF!"}},null,null,null,null,457,{"$f":"IF(V464>#REF!,\"\",$T$7)","v":{"$error":"#REF!"}},{"$f":"IF(V464>=#REF!,\"\",IF(V464<=#REF!,#REF!,#REF!))","v":{"$error":"#REF!"}},{"$f":"IF(V464>#REF!,\"\",#REF!)","v":{"$error":"#REF!"}},null,null,null,null,null,null,null,457]
[458,{"$f":"IF(A465>=#REF!,\"\",IF(A465<=#REF!,#REF!,#REF!))","v":{"$error":"#REF!"}},{"$f":"IF(A465>=#REF!,\"\",IF(A465<=#REF!,#REF!,#REF!))","v":{"$error":"#REF!"}},{"$f":"IF(A465>#REF!,\"\",#REF!)","v":{"$error":"#REF!"}},null,458,{"$f":"IF(F465>=#REF!,\"\",IF(F465<=#REF!,#REF!,#REF!))","v":{"$error":"#REF!"}},{"$f":"IF(F465>=#REF!,\"\",IF(F465<=#REF!,#REF!,#REF!))","v":{"$error":"#REF!"}},{"$f":"IF(F465>#REF!,\"\",PMT(#REF!/12,#REF!,-#REF!))","v":{"$error":"#REF!"}},null,null,null,null,458,{"$f":"IF(N465>#REF!,\"\",$L$7)","v":{"$error":"#REF!"}},{"$f":"IF(N465>=#REF!,\"\",IF(N465<=#REF!,#REF!,#REF!))","v":{"$error":"#REF!"}},{"$f":"IF(N465>#REF!,\"\",#REF!)","v":{"$error":"#REF!"}},null,null,null,null,458,{"$f":"IF(V465>#REF!,\"\",$T$7)","v":{"$error":"#REF!"}},{"$f":"IF(V465>=#REF!,\"\",IF(V465<=#REF!,#REF!,#REF!))","v":{"$error":"#REF!"}},{"$f":"IF(V465>#REF!,\"\",#REF!)","v":{"$error":"#REF!"}},null,null,null,null,null,null,null,458]
[459,{"$f":"IF(A466>=#REF!,\"\",IF(A466<=#REF!,#REF!,#REF!))","v":{"$error":"#REF!"}},{"$f":"IF(A466>=#REF!,\"\",IF(A466<=#REF!,#REF!,#REF!))","v":{"$error":"#REF!"}},{"$f":"IF(A466>#REF!,\"\",#REF!)","v":{"$error":"#REF!"}},null,459,{"$f":"IF(F466>=#REF!,\"\",IF(F466<=#REF!,#REF!,#REF!))","v":{"$error":"#REF!"}},{"$f":"IF(F466>=#REF!,\"\",IF(F466<=#REF!,#REF!,#REF!))","v":{"$error":"#REF!"}},{"$f":"IF(F466>#REF!,\"\",PMT(#REF!/12,#REF!,-#REF!))","v":{"$error":"#REF!"}},null,null,null,null,459,{"$f":"IF(N466>#REF!,\"\",$L$7)","v":{"$error":"#REF!"}},{"$f":"IF(N466>=#REF!,\"\",IF(N466<=#REF!,#REF!,#REF!))","v":{"$error":"#REF!"}},{"$f":"IF(N466>#REF!,\"\",#REF!)","v":{"$error":"#REF!"}},null,null,null,null,459,{"$f":"IF(V466>#REF!,\"\",$T$7)","v":{"$error":"#REF!"}},{"$f":"IF(V466>=#REF!,\"\",IF(V466<=#REF!,#REF!,#REF!))","v":{"$error":"#REF!"}},{"$f":"IF(V466>#REF!,\"\",#REF!)","v":{"$error":"#REF!"}},null,null,null,null,null,null,null,459]
[460,{"$f":"IF(A467>=#REF!,\"\",IF(A467<=#REF!,#REF!,#REF!))","v":{"$error":"#REF!"}},{"$f":"IF(A467>=#REF!,\"\",IF(A467<=#REF!,#REF!,#REF!))","v":{"$error":"#REF!"}},{"$f":"IF(A467>#REF!,\"\",#REF!)","v":{"$error":"#REF!"}},null,460,{"$f":"IF(F467>=#REF!,\"\",IF(F467<=#REF!,#REF!,#REF!))","v":{"$error":"#REF!"}},{"$f":"IF(F467>=#REF!,\"\",IF(F467<=#REF!,#REF!,#REF!))","v":{"$error":"#REF!"}},{"$f":"IF(F467>#REF!,\"\",PMT(#REF!/12,#REF!,-#REF!))","v":{"$error":"#REF!"}},null,null,null,null,460,{"$f":"IF(N467>#REF!,\"\",$L$7)","v":{"$error":"#REF!"}},{"$f":"IF(N467>=#REF!,\"\",IF(N467<=#REF!,#REF!,#REF!))","v":{"$error":"#REF!"}},{"$f":"IF(N467>#REF!,\"\",#REF!)","v":{"$error":"#REF!"}},null,null,null,null,460,{"$f":"IF(V467>#REF!,\"\",$T$7)","v":{"$error":"#REF!"}},{"$f":"IF(V467>=#REF!,\"\",IF(V467<=#REF!,#REF!,#REF!))","v":{"$error":"#REF!"}},{"$f":"IF(V467>#REF!,\"\",#REF!)","v":{"$error":"#REF!"}},null,null,null,null,null,null,null,460]
[461,{"$f":"IF(A468>=#REF!,\"\",IF(A468<=#REF!,#REF!,#REF!))","v":{"$error":"#REF!"}},{"$f":"IF(A468>=#REF!,\"\",IF(A468<=#REF!,#REF!,#REF!))","v":{"$error":"#REF!"}},{"$f":"IF(A468>#REF!,\"\",#REF!)","v":{"$error":"#REF!"}},null,461,{"$f":"IF(F468>=#REF!,\"\",IF(F468<=#REF!,#REF!,#REF!))","v":{"$error":"#REF!"}},{"$f":"IF(F468>=#REF!,\"\",IF(F468<=#REF!,#REF!,#REF!))","v":{"$error":"#REF!"}},{"$f":"IF(F468>#REF!,\"\",PMT(#REF!/12,#REF!,-#REF!))","v":{"$error":"#REF!"}},null,null,null,null,461,{"$f":"IF(N468>#REF!,\"\",$L$7)","v":{"$error":"#REF!"}},{"$f":"IF(N468>=#REF!,\"\",IF(N468<=#REF!,#REF!,#REF!))","v":{"$error":"#REF!"}},{"$f":"IF(N468>#REF!,\"\",#REF!)","v":{"$error":"#REF!"}},null,null,null,null,461,{"$f":"IF(V468>#REF!,\"\",$T$7)","v":{"$error":"#REF!"}},{"$f":"IF(V468>=#REF!,\"\",IF(V468<=#REF!,#REF!,#REF!))","v":{"$error":"#REF!"}},{"$f":"IF(V468>#REF!,\"\",#REF!)","v":{"$error":"#REF!"}},null,null,null,null,null,null,null,461]
[462,{"$f":"IF(A469>=#REF!,\"\",IF(A469<=#REF!,#REF!,#REF!))","v":{"$error":"#REF!"}},{"$f":"IF(A469>=#REF!,\"\",IF(A469<=#REF!,#REF!,#REF!))","v":{"$error":"#REF!"}},{"$f":"IF(A469>#REF!,\"\",#REF!)","v":{"$error":"#REF!"}},null,462,{"$f":"IF(F469>=#REF!,\"\",IF(F469<=#REF!,#REF!,#REF!))","v":{"$error":"#REF!"}},{"$f":"IF(F469>=#REF!,\"\",IF(F469<=#REF!,#REF!,#REF!))","v":{"$error":"#REF!"}},{"$f":"IF(F469>#REF!,\"\",PMT(#REF!/12,#REF!,-#REF!))","v":{"$error":"#REF!"}},null,null,null,null,462,{"$f":"IF(N469>#REF!,\"\",$L$7)","v":{"$error":"#REF!"}},{"$f":"IF(N469>=#REF!,\"\",IF(N469<=#REF!,#REF!,#REF!))","v":{"$error":"#REF!"}},{"$f":"IF(N469>#REF!,\"\",#REF!)","v":{"$error":"#REF!"}},null,null,null,null,462,{"$f":"IF(V469>#REF!,\"\",$T$7)","v":{"$error":"#REF!"}},{"$f":"IF(V469>=#REF!,\"\",IF(V469<=#REF!,#REF!,#REF!))","v":{"$error":"#REF!"}},{"$f":"IF(V469>#REF!,\"\",#REF!)","v":{"$error":"#REF!"}},null,null,null,null,null,null,null,462]
[463,{"$f":"IF(A470>=#REF!,\"\",IF(A470<=#REF!,#REF!,#REF!))","v":{"$error":"#REF!"}},{"$f":"IF(A470>=#REF!,\"\",IF(A470<=#REF!,#REF!,#REF!))","v":{"$error":"#REF!"}},{"$f":"IF(A470>#REF!,\"\",#REF!)","v":{"$error":"#REF!"}},null,463,{"$f":"IF(F470>=#REF!,\"\",IF(F470<=#REF!,#REF!,#REF!))","v":{"$error":"#REF!"}},{"$f":"IF(F470>=#REF!,\"\",IF(F470<=#REF!,#REF!,#REF!))","v":{"$error":"#REF!"}},{"$f":"IF(F470>#REF!,\"\",PMT(#REF!/12,#REF!,-#REF!))","v":{"$error":"#REF!"}},null,null,null,null,463,{"$f":"IF(N470>#REF!,\"\",$L$7)","v":{"$error":"#REF!"}},{"$f":"IF(N470>=#REF!,\"\",IF(N470<=#REF!,#REF!,#REF!))","v":{"$error":"#REF!"}},{"$f":"IF(N470>#REF!,\"\",#REF!)","v":{"$error":"#REF!"}},null,null,null,null,463,{"$f":"IF(V470>#REF!,\"\",$T$7)","v":{"$error":"#REF!"}},{"$f":"IF(V470>=#REF!,\"\",IF(V470<=#REF!,#REF!,#REF!))","v":{"$error":"#REF!"}},{"$f":"IF(V470>#REF!,\"\",#REF!)","v":{"$error":"#REF!"}},null,null,null,null,null,null,null,463]
[464,{"$f":"IF(A471>=#REF!,\"\",IF(A471<=#REF!,#REF!,#REF!))","v":{"$error":"#REF!"}},{"$f":"IF(A471>=#REF!,\"\",IF(A471<=#REF!,#REF!,#REF!))","v":{"$error":"#REF!"}},{"$f":"IF(A471>#REF!,\"\",#REF!)","v":{"$error":"#REF!"}},null,464,{"$f":"IF(F471>=#REF!,\"\",IF(F471<=#REF!,#REF!,#REF!))","v":{"$error":"#REF!"}},{"$f":"IF(F471>=#REF!,\"\",IF(F471<=#REF!,#REF!,#REF!))","v":{"$error":"#REF!"}},{"$f":"IF(F471>#REF!,\"\",PMT(#REF!/12,#REF!,-#REF!))","v":{"$error":"#REF!"}},null,null,null,null,464,{"$f":"IF(N471>#REF!,\"\",$L$7)","v":{"$error":"#REF!"}},{"$f":"IF(N471>=#REF!,\"\",IF(N471<=#REF!,#REF!,#REF!))","v":{"$error":"#REF!"}},{"$f":"IF(N471>#REF!,\"\",#REF!)","v":{"$error":"#REF!"}},null,null,null,null,464,{"$f":"IF(V471>#REF!,\"\",$T$7)","v":{"$error":"#REF!"}},{"$f":"IF(V471>=#REF!,\"\",IF(V471<=#REF!,#REF!,#REF!))","v":{"$error":"#REF!"}},{"$f":"IF(V471>#REF!,\"\",#REF!)","v":{"$error":"#REF!"}},null,null,null,null,null,null,null,464]
[465,{"$f":"IF(A472>=#REF!,\"\",IF(A472<=#REF!,#REF!,#REF!))","v":{"$error":"#REF!"}},{"$f":"IF(A472>=#REF!,\"\",IF(A472<=#REF!,#REF!,#REF!))","v":{"$error":"#REF!"}},{"$f":"IF(A472>#REF!,\"\",#REF!)","v":{"$error":"#REF!"}},null,465,{"$f":"IF(F472>=#REF!,\"\",IF(F472<=#REF!,#REF!,#REF!))","v":{"$error":"#REF!"}},{"$f":"IF(F472>=#REF!,\"\",IF(F472<=#REF!,#REF!,#REF!))","v":{"$error":"#REF!"}},{"$f":"IF(F472>#REF!,\"\",PMT(#REF!/12,#REF!,-#REF!))","v":{"$error":"#REF!"}},null,null,null,null,465,{"$f":"IF(N472>#REF!,\"\",$L$7)","v":{"$error":"#REF!"}},{"$f":"IF(N472>=#REF!,\"\",IF(N472<=#REF!,#REF!,#REF!))","v":{"$error":"#REF!"}},{"$f":"IF(N472>#REF!,\"\",#REF!)","v":{"$error":"#REF!"}},null,null,null,null,465,{"$f":"IF(V472>#REF!,\"\",$T$7)","v":{"$error":"#REF!"}},{"$f":"IF(V472>=#REF!,\"\",IF(V472<=#REF!,#REF!,#REF!))","v":{"$error":"#REF!"}},{"$f":"IF(V472>#REF!,\"\",#REF!)","v":{"$error":"#REF!"}},null,null,null,null,null,null,null,465]
[466,{"$f":"IF(A473>=#REF!,\"\",IF(A473<=#REF!,#REF!,#REF!))","v":{"$error":"#REF!"}},{"$f":"IF(A473>=#REF!,\"\",IF(A473<=#REF!,#REF!,#REF!))","v":{"$error":"#REF!"}},{"$f":"IF(A473>#REF!,\"\",#REF!)","v":{"$error":"#REF!"}},null,466,{"$f":"IF(F473>=#REF!,\"\",IF(F473<=#REF!,#REF!,#REF!))","v":{"$error":"#REF!"}},{"$f":"IF(F473>=#REF!,\"\",IF(F473<=#REF!,#REF!,#REF!))","v":{"$error":"#REF!"}},{"$f":"IF(F473>#REF!,\"\",PMT(#REF!/12,#REF!,-#REF!))","v":{"$error":"#REF!"}},null,null,null,null,466,{"$f":"IF(N473>#REF!,\"\",$L$7)","v":{"$error":"#REF!"}},{"$f":"IF(N473>=#REF!,\"\",IF(N473<=#REF!,#REF!,#REF!))","v":{"$error":"#REF!"}},{"$f":"IF(N473>#REF!,\"\",#REF!)","v":{"$error":"#REF!"}},null,null,null,null,466,{"$f":"IF(V473>#REF!,\"\",$T$7)","v":{"$error":"#REF!"}},{"$f":"IF(V473>=#REF!,\"\",IF(V473<=#REF!,#REF!,#REF!))","v":{"$error":"#REF!"}},{"$f":"IF(V473>#REF!,\"\",#REF!)","v":{"$error":"#REF!"}},null,null,null,null,null,null,null,466]
[467,{"$f":"IF(A474>=#REF!,\"\",IF(A474<=#REF!,#REF!,#REF!))","v":{"$error":"#REF!"}},{"$f":"IF(A474>=#REF!,\"\",IF(A474<=#REF!,#REF!,#REF!))","v":{"$error":"#REF!"}},{"$f":"IF(A474>#REF!,\"\",#REF!)","v":{"$error":"#REF!"}},null,467,{"$f":"IF(F474>=#REF!,\"\",IF(F474<=#REF!,#REF!,#REF!))","v":{"$error":"#REF!"}},{"$f":"IF(F474>=#REF!,\"\",IF(F474<=#REF!,#REF!,#REF!))","v":{"$error":"#REF!"}},{"$f":"IF(F474>#REF!,\"\",PMT(#REF!/12,#REF!,-#REF!))","v":{"$error":"#REF!"}},null,null,null,null,467,{"$f":"IF(N474>#REF!,\"\",$L$7)","v":{"$error":"#REF!"}},{"$f":"IF(N474>=#REF!,\"\",IF(N474<=#REF!,#REF!,#REF!))","v":{"$error":"#REF!"}},{"$f":"IF(N474>#REF!,\"\",#REF!)","v":{"$error":"#REF!"}},null,null,null,null,467,{"$f":"IF(V474>#REF!,\"\",$T$7)","v":{"$error":"#REF!"}},{"$f":"IF(V474>=#REF!,\"\",IF(V474<=#REF!,#REF!,#REF!))","v":{"$error":"#REF!"}},{"$f":"IF(V474>#REF!,\"\",#REF!)","v":{"$error":"#REF!"}},null,null,null,null,null,null,null,467]
[468,{"$f":"IF(A475>=#REF!,\"\",IF(A475<=#REF!,#REF!,#REF!))","v":{"$error":"#REF!"}},{"$f":"IF(A475>=#REF!,\"\",IF(A475<=#REF!,#REF!,#REF!))","v":{"$error":"#REF!"}},{"$f":"IF(A475>#REF!,\"\",#REF!)","v":{"$error":"#REF!"}},null,468,{"$f":"IF(F475>=#REF!,\"\",IF(F475<=#REF!,#REF!,#REF!))","v":{"$error":"#REF!"}},{"$f":"IF(F475>=#REF!,\"\",IF(F475<=#REF!,#REF!,#REF!))","v":{"$error":"#REF!"}},{"$f":"IF(F475>#REF!,\"\",PMT(#REF!/12,#REF!,-#REF!))","v":{"$error":"#REF!"}},null,null,null,null,468,{"$f":"IF(N475>#REF!,\"\",$L$7)","v":{"$error":"#REF!"}},{"$f":"IF(N475>=#REF!,\"\",IF(N475<=#REF!,#REF!,#REF!))","v":{"$error":"#REF!"}},{"$f":"IF(N475>#REF!,\"\",#REF!)","v":{"$error":"#REF!"}},null,null,null,null,468,{"$f":"IF(V475>#REF!,\"\",$T$7)","v":{"$error":"#REF!"}},{"$f":"IF(V475>=#REF!,\"\",IF(V475<=#REF!,#REF!,#REF!))","v":{"$error":"#REF!"}},{"$f":"IF(V475>#REF!,\"\",#REF!)","v":{"$error":"#REF!"}},null,null,null,null,null,null,null,468]
[469,{"$f":"IF(A476>=#REF!,\"\",IF(A476<=#REF!,#REF!,#REF!))","v":{"$error":"#REF!"}},{"$f":"IF(A476>=#REF!,\"\",IF(A476<=#REF!,#REF!,#REF!))","v":{"$error":"#REF!"}},{"$f":"IF(A476>#REF!,\"\",#REF!)","v":{"$error":"#REF!"}},null,469,{"$f":"IF(F476>=#REF!,\"\",IF(F476<=#REF!,#REF!,#REF!))","v":{"$error":"#REF!"}},{"$f":"IF(F476>=#REF!,\"\",IF(F476<=#REF!,#REF!,#REF!))","v":{"$error":"#REF!"}},{"$f":"IF(F476>#REF!,\"\",PMT(#REF!/12,#REF!,-#REF!))","v":{"$error":"#REF!"}},null,null,null,null,469,{"$f":"IF(N476>#REF!,\"\",$L$7)","v":{"$error":"#REF!"}},{"$f":"IF(N476>=#REF!,\"\",IF(N476<=#REF!,#REF!,#REF!))","v":{"$error":"#REF!"}},{"$f":"IF(N476>#REF!,\"\",#REF!)","v":{"$error":"#REF!"}},null,null,null,null,469,{"$f":"IF(V476>#REF!,\"\",$T$7)","v":{"$error":"#REF!"}},{"$f":"IF(V476>=#REF!,\"\",IF(V476<=#REF!,#REF!,#REF!))","v":{"$error":"#REF!"}},{"$f":"IF(V476>#REF!,\"\",#REF!)","v":{"$error":"#REF!"}},null,null,null,null,null,null,null,469]
[470,{"$f":"IF(A477>=#REF!,\"\",IF(A477<=#REF!,#REF!,#REF!))","v":{"$error":"#REF!"}},{"$f":"IF(A477>=#REF!,\"\",IF(A477<=#REF!,#REF!,#REF!))","v":{"$error":"#REF!"}},{"$f":"IF(A477>#REF!,\"\",#REF!)","v":{"$error":"#REF!"}},null,470,{"$f":"IF(F477>=#REF!,\"\",IF(F477<=#REF!,#REF!,#REF!))","v":{"$error":"#REF!"}},{"$f":"IF(F477>=#REF!,\"\",IF(F477<=#REF!,#REF!,#REF!))","v":{"$error":"#REF!"}},{"$f":"IF(F477>#REF!,\"\",PMT(#REF!/12,#REF!,-#REF!))","v":{"$error":"#REF!"}},null,null,null,null,470,{"$f":"IF(N477>#REF!,\"\",$L$7)","v":{"$error":"#REF!"}},{"$f":"IF(N477>=#REF!,\"\",IF(N477<=#REF!,#REF!,#REF!))","v":{"$error":"#REF!"}},{"$f":"IF(N477>#REF!,\"\",#REF!)","v":{"$error":"#REF!"}},null,null,null,null,470,{"$f":"IF(V477>#REF!,\"\",$T$7)","v":{"$error":"#REF!"}},{"$f":"IF(V477>=#REF!,\"\",IF(V477<=#REF!,#REF!,#REF!))","v":{"$error":"#REF!"}},{"$f":"IF(V477>#REF!,\"\",#REF!)","v":{"$error":"#REF!"}},null,null,null,null,null,null,null,470]
[471,{"$f":"IF(A478>=#REF!,\"\",IF(A478<=#REF!,#REF!,#REF!))","v":{"$error":"#REF!"}},{"$f":"IF(A478>=#REF!,\"\",IF(A478<=#REF!,#REF!,#REF!))","v":{"$error":"#REF!"}},{"$f":"IF(A478>#REF!,\"\",#REF!)","v":{"$error":"#REF!"}},null,471,{"$f":"IF(F478>=#REF!,\"\",IF(F478<=#REF!,#REF!,#REF!))","v":{"$error":"#REF!"}},{"$f":"IF(F478>=#REF!,\"\",IF(F478<=#REF!,#REF!,#REF!))","v":{"$error":"#REF!"}},{"$f":"IF(F478>#REF!,\"\",PMT(#REF!/12,#REF!,-#REF!))","v":{"$error":"#REF!"}},null,null,null,null,471,{"$f":"IF(N478>#REF!,\"\",$L$7)","v":{"$error":"#REF!"}},{"$f":"IF(N478>=#REF!,\"\",IF(N478<=#REF!,#REF!,#REF!))","v":{"$error":"#REF!"}},{"$f":"IF(N478>#REF!,\"\",#REF!)","v":{"$error":"#REF!"}},null,null,null,null,471,{"$f":"IF(V478>#REF!,\"\",$T$7)","v":{"$error":"#REF!"}},{"$f":"IF(V478>=#REF!,\"\",IF(V478<=#REF!,#REF!,#REF!))","v":{"$error":"#REF!"}},{"$f":"IF(V478>#REF!,\"\",#REF!)","v":{"$error":"#REF!"}},null,null,null,null,null,null,null,471]
[472,{"$f":"IF(A479>=#REF!,\"\",IF(A479<=#REF!,#REF!,#REF!))","v":{"$error":"#REF!"}},{"$f":"IF(A479>=#REF!,\"\",IF(A479<=#REF!,#REF!,#REF!))","v":{"$error":"#REF!"}},{"$f":"IF(A479>#REF!,\"\",#REF!)","v":{"$error":"#REF!"}},null,472,{"$f":"IF(F479>=#REF!,\"\",IF(F479<=#REF!,#REF!,#REF!))","v":{"$error":"#REF!"}},{"$f":"IF(F479>=#REF!,\"\",IF(F479<=#REF!,#REF!,#REF!))","v":{"$error":"#REF!"}},{"$f":"IF(F479>#REF!,\"\",PMT(#REF!/12,#REF!,-#REF!))","v":{"$error":"#REF!"}},null,null,null,null,472,{"$f":"IF(N479>#REF!,\"\",$L$7)","v":{"$error":"#REF!"}},{"$f":"IF(N479>=#REF!,\"\",IF(N479<=#REF!,#REF!,#REF!))","v":{"$error":"#REF!"}},{"$f":"IF(N479>#REF!,\"\",#REF!)","v":{"$error":"#REF!"}},null,null,null,null,472,{"$f":"IF(V479>#REF!,\"\",$T$7)","v":{"$error":"#REF!"}},{"$f":"IF(V479>=#REF!,\"\",IF(V479<=#REF!,#REF!,#REF!))","v":{"$error":"#REF!"}},{"$f":"IF(V479>#REF!,\"\",#REF!)","v":{"$error":"#REF!"}},null,null,null,null,null,null,null,472]
[473,{"$f":"IF(A480>=#REF!,\"\",IF(A480<=#REF!,#REF!,#REF!))","v":{"$error":"#REF!"}},{"$f":"IF(A480>=#REF!,\"\",IF(A480<=#REF!,#REF!,#REF!))","v":{"$error":"#REF!"}},{"$f":"IF(A480>#REF!,\"\",#REF!)","v":{"$error":"#REF!"}},null,473,{"$f":"IF(F480>=#REF!,\"\",IF(F480<=#REF!,#REF!,#REF!))","v":{"$error":"#REF!"}},{"$f":"IF(F480>=#REF!,\"\",IF(F480<=#REF!,#REF!,#REF!))","v":{"$error":"#REF!"}},{"$f":"IF(F480>#REF!,\"\",PMT(#REF!/12,#REF!,-#REF!))","v":{"$error":"#REF!"}},null,null,null,null,473,{"$f":"IF(N480>#REF!,\"\",$L$7)","v":{"$error":"#REF!"}},{"$f":"IF(N480>=#REF!,\"\",IF(N480<=#REF!,#REF!,#REF!))","v":{"$error":"#REF!"}},{"$f":"IF(N480>#REF!,\"\",#REF!)","v":{"$error":"#REF!"}},null,null,null,null,473,{"$f":"IF(V480>#REF!,\"\",$T$7)","v":{"$error":"#REF!"}},{"$f":"IF(V480>=#REF!,\"\",IF(V480<=#REF!,#REF!,#REF!))","v":{"$error":"#REF!"}},{"$f":"IF(V480>#REF!,\"\",#REF!)","v":{"$error":"#REF!"}},null,null,null,null,null,null,null,473]
[474,{"$f":"IF(A481>=#REF!,\"\",IF(A481<=#REF!,#REF!,#REF!))","v":{"$error":"#REF!"}},{"$f":"IF(A481>=#REF!,\"\",IF(A481<=#REF!,#REF!,#REF!))","v":{"$error":"#REF!"}},{"$f":"IF(A481>#REF!,\"\",#REF!)","v":{"$error":"#REF!"}},null,474,{"$f":"IF(F481>=#REF!,\"\",IF(F481<=#REF!,#REF!,#REF!))","v":{"$error":"#REF!"}},{"$f":"IF(F481>=#REF!,\"\",IF(F481<=#REF!,#REF!,#REF!))","v":{"$error":"#REF!"}},{"$f":"IF(F481>#REF!,\"\",PMT(#REF!/12,#REF!,-#REF!))","v":{"$error":"#REF!"}},null,null,null,null,474,{"$f":"IF(N481>#REF!,\"\",$L$7)","v":{"$error":"#REF!"}},{"$f":"IF(N481>=#REF!,\"\",IF(N481<=#REF!,#REF!,#REF!))","v":{"$error":"#REF!"}},{"$f":"IF(N481>#REF!,\"\",#REF!)","v":{"$error":"#REF!"}},null,null,null,null,474,{"$f":"IF(V481>#REF!,\"\",$T$7)","v":{"$error":"#REF!"}},{"$f":"IF(V481>=#REF!,\"\",IF(V481<=#REF!,#REF!,#REF!))","v":{"$error":"#REF!"}},{"$f":"IF(V481>#REF!,\"\",#REF!)","v":{"$error":"#REF!"}},null,null,null,null,null,null,null,474]
[475,{"$f":"IF(A482>=#REF!,\"\",IF(A482<=#REF!,#REF!,#REF!))","v":{"$error":"#REF!"}},{"$f":"IF(A482>=#REF!,\"\",IF(A482<=#REF!,#REF!,#REF!))","v":{"$error":"#REF!"}},{"$f":"IF(A482>#REF!,\"\",#REF!)","v":{"$error":"#REF!"}},null,475,{"$f":"IF(F482>=#REF!,\"\",IF(F482<=#REF!,#REF!,#REF!))","v":{"$error":"#REF!"}},{"$f":"IF(F482>=#REF!,\"\",IF(F482<=#REF!,#REF!,#REF!))","v":{"$error":"#REF!"}},{"$f":"IF(F482>#REF!,\"\",PMT(#REF!/12,#REF!,-#REF!))","v":{"$error":"#REF!"}},null,null,null,null,475,{"$f":"IF(N482>#REF!,\"\",$L$7)","v":{"$error":"#REF!"}},{"$f":"IF(N482>=#REF!,\"\",IF(N482<=#REF!,#REF!,#REF!))","v":{"$error":"#REF!"}},{"$f":"IF(N482>#REF!,\"\",#REF!)","v":{"$error":"#REF!"}},null,null,null,null,475,{"$f":"IF(V482>#REF!,\"\",$T$7)","v":{"$error":"#REF!"}},{"$f":"IF(V482>=#REF!,\"\",IF(V482<=#REF!,#REF!,#REF!))","v":{"$error":"#REF!"}},{"$f":"IF(V482>#REF!,\"\",#REF!)","v":{"$error":"#REF!"}},null,null,null,null,null,null,null,475]
[476,{"$f":"IF(A483>=#REF!,\"\",IF(A483<=#REF!,#REF!,#REF!))","v":{"$error":"#REF!"}},{"$f":"IF(A483>=#REF!,\"\",IF(A483<=#REF!,#REF!,#REF!))","v":{"$error":"#REF!"}},{"$f":"IF(A483>#REF!,\"\",#REF!)","v":{"$error":"#REF!"}},null,476,{"$f":"IF(F483>=#REF!,\"\",IF(F483<=#REF!,#REF!,#REF!))","v":{"$error":"#REF!"}},{"$f":"IF(F483>=#REF!,\"\",IF(F483<=#REF!,#REF!,#REF!))","v":{"$error":"#REF!"}},{"$f":"IF(F483>#REF!,\"\",PMT(#REF!/12,#REF!,-#REF!))","v":{"$error":"#REF!"}},null,null,null,null,476,{"$f":"IF(N483>#REF!,\"\",$L$7)","v":{"$error":"#REF!"}},{"$f":"IF(N483>=#REF!,\"\",IF(N483<=#REF!,#REF!,#REF!))","v":{"$error":"#REF!"}},{"$f":"IF(N483>#REF!,\"\",#REF!)","v":{"$error":"#REF!"}},null,null,null,null,476,{"$f":"IF(V483>#REF!,\"\",$T$7)","v":{"$error":"#REF!"}},{"$f":"IF(V483>=#REF!,\"\",IF(V483<=#REF!,#REF!,#REF!))","v":{"$error":"#REF!"}},{"$f":"IF(V483>#REF!,\"\",#REF!)","v":{"$error":"#REF!"}},null,null,null,null,null,null,null,476]
[477,{"$f":"IF(A484>=#REF!,\"\",IF(A484<=#REF!,#REF!,#REF!))","v":{"$error":"#REF!"}},{"$f":"IF(A484>=#REF!,\"\",IF(A484<=#REF!,#REF!,#REF!))","v":{"$error":"#REF!"}},{"$f":"IF(A484>#REF!,\"\",#REF!)","v":{"$error":"#REF!"}},null,477,{"$f":"IF(F484>=#REF!,\"\",IF(F484<=#REF!,#REF!,#REF!))","v":{"$error":"#REF!"}},{"$f":"IF(F484>=#REF!,\"\",IF(F484<=#REF!,#REF!,#REF!))","v":{"$error":"#REF!"}},{"$f":"IF(F484>#REF!,\"\",PMT(#REF!/12,#REF!,-#REF!))","v":{"$error":"#REF!"}},null,null,null,null,477,{"$f":"IF(N484>#REF!,\"\",$L$7)","v":{"$error":"#REF!"}},{"$f":"IF(N484>=#REF!,\"\",IF(N484<=#REF!,#REF!,#REF!))","v":{"$error":"#REF!"}},{"$f":"IF(N484>#REF!,\"\",#REF!)","v":{"$error":"#REF!"}},null,null,null,null,477,{"$f":"IF(V484>#REF!,\"\",$T$7)","v":{"$error":"#REF!"}},{"$f":"IF(V484>=#REF!,\"\",IF(V484<=#REF!,#REF!,#REF!))","v":{"$error":"#REF!"}},{"$f":"IF(V484>#REF!,\"\",#REF!)","v":{"$error":"#REF!"}},null,null,null,null,null,null,null,477]
[478,{"$f":"IF(A485>=#REF!,\"\",IF(A485<=#REF!,#REF!,#REF!))","v":{"$error":"#REF!"}},{"$f":"IF(A485>=#REF!,\"\",IF(A485<=#REF!,#REF!,#REF!))","v":{"$error":"#REF!"}},{"$f":"IF(A485>#REF!,\"\",#REF!)","v":{"$error":"#REF!"}},null,478,{"$f":"IF(F485>=#REF!,\"\",IF(F485<=#REF!,#REF!,#REF!))","v":{"$error":"#REF!"}},{"$f":"IF(F485>=#REF!,\"\",IF(F485<=#REF!,#REF!,#REF!))","v":{"$error":"#REF!"}},{"$f":"IF(F485>#REF!,\"\",PMT(#REF!/12,#REF!,-#REF!))","v":{"$error":"#REF!"}},null,null,null,null,478,{"$f":"IF(N485>#REF!,\"\",$L$7)","v":{"$error":"#REF!"}},{"$f":"IF(N485>=#REF!,\"\",IF(N485<=#REF!,#REF!,#REF!))","v":{"$error":"#REF!"}},{"$f":"IF(N485>#REF!,\"\",#REF!)","v":{"$error":"#REF!"}},null,null,null,null,478,{"$f":"IF(V485>#REF!,\"\",$T$7)","v":{"$error":"#REF!"}},{"$f":"IF(V485>=#REF!,\"\",IF(V485<=#REF!,#REF!,#REF!))","v":{"$error":"#REF!"}},{"$f":"IF(V485>#REF!,\"\",#REF!)","v":{"$error":"#REF!"}},null,null,null,null,null,null,null,478]
[479,{"$f":"IF(A486>=#REF!,\"\",IF(A486<=#REF!,#REF!,#REF!))","v":{"$error":"#REF!"}},{"$f":"IF(A486>=#REF!,\"\",IF(A486<=#REF!,#REF!,#REF!))","v":{"$error":"#REF!"}},{"$f":"IF(A486>#REF!,\"\",#REF!)","v":{"$error":"#REF!"}},null,479,{"$f":"IF(F486>=#REF!,\"\",IF(F486<=#REF!,#REF!,#REF!))","v":{"$error":"#REF!"}},{"$f":"IF(F486>=#REF!,\"\",IF(F486<=#REF!,#REF!,#REF!))","v":{"$error":"#REF!"}},{"$f":"IF(F486>#REF!,\"\",PMT(#REF!/12,#REF!,-#REF!))","v":{"$error":"#REF!"}},null,null,null,null,479,{"$f":"IF(N486>#REF!,\"\",$L$7)","v":{"$error":"#REF!"}},{"$f":"IF(N486>=#REF!,\"\",IF(N486<=#REF!,#REF!,#REF!))","v":{"$error":"#REF!"}},{"$f":"IF(N486>#REF!,\"\",#REF!)","v":{"$error":"#REF!"}},null,null,null,null,479,{"$f":"IF(V486>#REF!,\"\",$T$7)","v":{"$error":"#REF!"}},{"$f":"IF(V486>=#REF!,\"\",IF(V486<=#REF!,#REF!,#REF!))","v":{"$error":"#REF!"}},{"$f":"IF(V486>#REF!,\"\",#REF!)","v":{"$error":"#REF!"}},null,null,null,null,null,null,null,479]
[480,{"$f":"IF(A487>=#REF!,\"\",IF(A487<=#REF!,#REF!,#REF!))","v":{"$error":"#REF!"}},{"$f":"IF(A487>=#REF!,\"\",IF(A487<=#REF!,#REF!,#REF!))","v":{"$error":"#REF!"}},{"$f":"IF(A487>#REF!,\"\",#REF!)","v":{"$error":"#REF!"}},null,480,{"$f":"IF(F487>=#REF!,\"\",IF(F487<=#REF!,#REF!,#REF!))","v":{"$error":"#REF!"}},{"$f":"IF(F487>=#REF!,\"\",IF(F487<=#REF!,#REF!,#REF!))","v":{"$error":"#REF!"}},{"$f":"IF(F487>#REF!,\"\",PMT(#REF!/12,#REF!,-#REF!))","v":{"$error":"#REF!"}},null,null,null,null,480,{"$f":"IF(N487>#REF!,\"\",$L$7)","v":{"$error":"#REF!"}},{"$f":"IF(N487>=#REF!,\"\",IF(N487<=#REF!,#REF!,#REF!))","v":{"$error":"#REF!"}},{"$f":"IF(N487>#REF!,\"\",#REF!)","v":{"$error":"#REF!"}},null,null,null,null,480,{"$f":"IF(V487>#REF!,\"\",$T$7)","v":{"$error":"#REF!"}},{"$f":"IF(V487>=#REF!,\"\",IF(V487<=#REF!,#REF!,#REF!))","v":{"$error":"#REF!"}},{"$f":"IF(V487>#REF!,\"\",#REF!)","v":{"$error":"#REF!"}},null,null,null,null,null,null,null,480]
[481,{"$f":"IF(A488>=#REF!,\"\",IF(A488<=#REF!,#REF!,#REF!))","v":{"$error":"#REF!"}},{"$f":"IF(A488>=#REF!,\"\",IF(A488<=#REF!,#REF!,#REF!))","v":{"$error":"#REF!"}},{"$f":"IF(A488>#REF!,\"\",#REF!)","v":{"$error":"#REF!"}},null,481,{"$f":"IF(F488>=#REF!,\"\",IF(F488<=#REF!,#REF!,#REF!))","v":{"$error":"#REF!"}},{"$f":"IF(F488>=#REF!,\"\",IF(F488<=#REF!,#REF!,#REF!))","v":{"$error":"#REF!"}},{"$f":"IF(F488>#REF!,\"\",PMT(#REF!/12,#REF!,-#REF!))","v":{"$error":"#REF!"}},null,null,null,null,481,{"$f":"IF(N488>#REF!,\"\",$L$7)","v":{"$error":"#REF!"}},{"$f":"IF(N488>=#REF!,\"\",IF(N488<=#REF!,#REF!,#REF!))","v":{"$error":"#REF!"}},{"$f":"IF(N488>#REF!,\"\",#REF!)","v":{"$error":"#REF!"}},null,null,null,null,481,{"$f":"IF(V488>#REF!,\"\",$T$7)","v":{"$error":"#REF!"}},{"$f":"IF(V488>=#REF!,\"\",IF(V488<=#REF!,#REF!,#REF!))","v":{"$error":"#REF!"}},{"$f":"IF(V488>#REF!,\"\",#REF!)","v":{"$error":"#REF!"}},null,null,null,null,null,null,null,481]
[482,{"$f":"IF(A489>=#REF!,\"\",IF(A489<=#REF!,#REF!,#REF!))","v":{"$error":"#REF!"}},{"$f":"IF(A489>=#REF!,\"\",IF(A489<=#REF!,#REF!,#REF!))","v":{"$error":"#REF!"}},{"$f":"IF(A489>#REF!,\"\",#REF!)","v":{"$error":"#REF!"}},null,482,{"$f":"IF(F489>=#REF!,\"\",IF(F489<=#REF!,#REF!,#REF!))","v":{"$error":"#REF!"}},{"$f":"IF(F489>=#REF!,\"\",IF(F489<=#REF!,#REF!,#REF!))","v":{"$error":"#REF!"}},{"$f":"IF(F489>#REF!,\"\",PMT(#REF!/12,#REF!,-#REF!))","v":{"$error":"#REF!"}},null,null,null,null,482,{"$f":"IF(N489>#REF!,\"\",$L$7)","v":{"$error":"#REF!"}},{"$f":"IF(N489>=#REF!,\"\",IF(N489<=#REF!,#REF!,#REF!))","v":{"$error":"#REF!"}},{"$f":"IF(N489>#REF!,\"\",#REF!)","v":{"$error":"#REF!"}},null,null,null,null,482,{"$f":"IF(V489>#REF!,\"\",$T$7)","v":{"$error":"#REF!"}},{"$f":"IF(V489>=#REF!,\"\",IF(V489<=#REF!,#REF!,#REF!))","v":{"$error":"#REF!"}},{"$f":"IF(V489>#REF!,\"\",#REF!)","v":{"$error":"#REF!"}},null,null,null,null,null,null,null,482]
[483,{"$f":"IF(A490>=#REF!,\"\",IF(A490<=#REF!,#REF!,#REF!))","v":{"$error":"#REF!"}},{"$f":"IF(A490>=#REF!,\"\",IF(A490<=#REF!,#REF!,#REF!))","v":{"$error":"#REF!"}},{"$f":"IF(A490>#REF!,\"\",#REF!)","v":{"$error":"#REF!"}},null,483,{"$f":"IF(F490>=#REF!,\"\",IF(F490<=#REF!,#REF!,#REF!))","v":{"$error":"#REF!"}},{"$f":"IF(F490>=#REF!,\"\",IF(F490<=#REF!,#REF!,#REF!))","v":{"$error":"#REF!"}},{"$f":"IF(F490>#REF!,\"\",PMT(#REF!/12,#REF!,-#REF!))","v":{"$error":"#REF!"}},null,null,null,null,483,{"$f":"IF(N490>#REF!,\"\",$L$7)","v":{"$error":"#REF!"}},{"$f":"IF(N490>=#REF!,\"\",IF(N490<=#REF!,#REF!,#REF!))","v":{"$error":"#REF!"}},{"$f":"IF(N490>#REF!,\"\",#REF!)","v":{"$error":"#REF!"}},null,null,null,null,483,{"$f":"IF(V490>#REF!,\"\",$T$7)","v":{"$error":"#REF!"}},{"$f":"IF(V490>=#REF!,\"\",IF(V490<=#REF!,#REF!,#REF!))","v":{"$error":"#REF!"}},{"$f":"IF(V490>#REF!,\"\",#REF!)","v":{"$error":"#REF!"}},null,null,null,null,null,null,null,483]
[484,{"$f":"IF(A491>=#REF!,\"\",IF(A491<=#REF!,#REF!,#REF!))","v":{"$error":"#REF!"}},{"$f":"IF(A491>=#REF!,\"\",IF(A491<=#REF!,#REF!,#REF!))","v":{"$error":"#REF!"}},{"$f":"IF(A491>#REF!,\"\",#REF!)","v":{"$error":"#REF!"}},null,484,{"$f":"IF(F491>=#REF!,\"\",IF(F491<=#REF!,#REF!,#REF!))","v":{"$error":"#REF!"}},{"$f":"IF(F491>=#REF!,\"\",IF(F491<=#REF!,#REF!,#REF!))","v":{"$error":"#REF!"}},{"$f":"IF(F491>#REF!,\"\",PMT(#REF!/12,#REF!,-#REF!))","v":{"$error":"#REF!"}},null,null,null,null,484,{"$f":"IF(N491>#REF!,\"\",$L$7)","v":{"$error":"#REF!"}},{"$f":"IF(N491>=#REF!,\"\",IF(N491<=#REF!,#REF!,#REF!))","v":{"$error":"#REF!"}},{"$f":"IF(N491>#REF!,\"\",#REF!)","v":{"$error":"#REF!"}},null,null,null,null,484,{"$f":"IF(V491>#REF!,\"\",$T$7)","v":{"$error":"#REF!"}},{"$f":"IF(V491>=#REF!,\"\",IF(V491<=#REF!,#REF!,#REF!))","v":{"$error":"#REF!"}},{"$f":"IF(V491>#REF!,\"\",#REF!)","v":{"$error":"#REF!"}},null,null,null,null,null,null,null,484]
[485,{"$f":"IF(A492>=#REF!,\"\",IF(A492<=#REF!,#REF!,#REF!))","v":{"$error":"#REF!"}},{"$f":"IF(A492>=#REF!,\"\",IF(A492<=#REF!,#REF!,#REF!))","v":{"$error":"#REF!"}},{"$f":"IF(A492>#REF!,\"\",#REF!)","v":{"$error":"#REF!"}},null,485,{"$f":"IF(F492>=#REF!,\"\",IF(F492<=#REF!,#REF!,#REF!))","v":{"$error":"#REF!"}},{"$f":"IF(F492>=#REF!,\"\",IF(F492<=#REF!,#REF!,#REF!))","v":{"$error":"#REF!"}},{"$f":"IF(F492>#REF!,\"\",PMT(#REF!/12,#REF!,-#REF!))","v":{"$error":"#REF!"}},null,null,null,null,485,{"$f":"IF(N492>#REF!,\"\",$L$7)","v":{"$error":"#REF!"}},{"$f":"IF(N492>=#REF!,\"\",IF(N492<=#REF!,#REF!,#REF!))","v":{"$error":"#REF!"}},{"$f":"IF(N492>#REF!,\"\",#REF!)","v":{"$error":"#REF!"}},null,null,null,null,485,{"$f":"IF(V492>#REF!,\"\",$T$7)","v":{"$error":"#REF!"}},{"$f":"IF(V492>=#REF!,\"\",IF(V492<=#REF!,#REF!,#REF!))","v":{"$error":"#REF!"}},{"$f":"IF(V492>#REF!,\"\",#REF!)","v":{"$error":"#REF!"}},null,null,null,null,null,null,null,485]
[486,{"$f":"IF(A493>=#REF!,\"\",IF(A493<=#REF!,#REF!,#REF!))","v":{"$error":"#REF!"}},{"$f":"IF(A493>=#REF!,\"\",IF(A493<=#REF!,#REF!,#REF!))","v":{"$error":"#REF!"}},{"$f":"IF(A493>#REF!,\"\",#REF!)","v":{"$error":"#REF!"}},null,486,{"$f":"IF(F493>=#REF!,\"\",IF(F493<=#REF!,#REF!,#REF!))","v":{"$error":"#REF!"}},{"$f":"IF(F493>=#REF!,\"\",IF(F493<=#REF!,#REF!,#REF!))","v":{"$error":"#REF!"}},{"$f":"IF(F493>#REF!,\"\",PMT(#REF!/12,#REF!,-#REF!))","v":{"$error":"#REF!"}},null,null,null,null,486,{"$f":"IF(N493>#REF!,\"\",$L$7)","v":{"$error":"#REF!"}},{"$f":"IF(N493>=#REF!,\"\",IF(N493<=#REF!,#REF!,#REF!))","v":{"$error":"#REF!"}},{"$f":"IF(N493>#REF!,\"\",#REF!)","v":{"$error":"#REF!"}},null,null,null,null,486,{"$f":"IF(V493>#REF!,\"\",$T$7)","v":{"$error":"#REF!"}},{"$f":"IF(V493>=#REF!,\"\",IF(V493<=#REF!,#REF!,#REF!))","v":{"$error":"#REF!"}},{"$f":"IF(V493>#REF!,\"\",#REF!)","v":{"$error":"#REF!"}},null,null,null,null,null,null,null,486]
[487,{"$f":"IF(A494>=#REF!,\"\",IF(A494<=#REF!,#REF!,#REF!))","v":{"$error":"#REF!"}},{"$f":"IF(A494>=#REF!,\"\",IF(A494<=#REF!,#REF!,#REF!))","v":{"$error":"#REF!"}},{"$f":"IF(A494>#REF!,\"\",#REF!)","v":{"$error":"#REF!"}},null,487,{"$f":"IF(F494>=#REF!,\"\",IF(F494<=#REF!,#REF!,#REF!))","v":{"$error":"#REF!"}},{"$f":"IF(F494>=#REF!,\"\",IF(F494<=#REF!,#REF!,#REF!))","v":{"$error":"#REF!"}},{"$f":"IF(F494>#REF!,\"\",PMT(#REF!/12,#REF!,-#REF!))","v":{"$error":"#REF!"}},null,null,null,null,487,{"$f":"IF(N494>#REF!,\"\",$L$7)","v":{"$error":"#REF!"}},{"$f":"IF(N494>=#REF!,\"\",IF(N494<=#REF!,#REF!,#REF!))","v":{"$error":"#REF!"}},{"$f":"IF(N494>#REF!,\"\",#REF!)","v":{"$error":"#REF!"}},null,null,null,null,487,{"$f":"IF(V494>#REF!,\"\",$T$7)","v":{"$error":"#REF!"}},{"$f":"IF(V494>=#REF!,\"\",IF(V494<=#REF!,#REF!,#REF!))","v":{"$error":"#REF!"}},{"$f":"IF(V494>#REF!,\"\",#REF!)","v":{"$error":"#REF!"}},null,null,null,null,null,null,null,487]
[488,{"$f":"IF(A495>=#REF!,\"\",IF(A495<=#REF!,#REF!,#REF!))","v":{"$error":"#REF!"}},{"$f":"IF(A495>=#REF!,\"\",IF(A495<=#REF!,#REF!,#REF!))","v":{"$error":"#REF!"}},{"$f":"IF(A495>#REF!,\"\",#REF!)","v":{"$error":"#REF!"}},null,488,{"$f":"IF(F495>=#REF!,\"\",IF(F495<=#REF!,#REF!,#REF!))","v":{"$error":"#REF!"}},{"$f":"IF(F495>=#REF!,\"\",IF(F495<=#REF!,#REF!,#REF!))","v":{"$error":"#REF!"}},{"$f":"IF(F495>#REF!,\"\",PMT(#REF!/12,#REF!,-#REF!))","v":{"$error":"#REF!"}},null,null,null,null,488,{"$f":"IF(N495>#REF!,\"\",$L$7)","v":{"$error":"#REF!"}},{"$f":"IF(N495>=#REF!,\"\",IF(N495<=#REF!,#REF!,#REF!))","v":{"$error":"#REF!"}},{"$f":"IF(N495>#REF!,\"\",#REF!)","v":{"$error":"#REF!"}},null,null,null,null,488,{"$f":"IF(V495>#REF!,\"\",$T$7)","v":{"$error":"#REF!"}},{"$f":"IF(V495>=#REF!,\"\",IF(V495<=#REF!,#REF!,#REF!))","v":{"$error":"#REF!"}},{"$f":"IF(V495>#REF!,\"\",#REF!)","v":{"$error":"#REF!"}},null,null,null,null,null,null,null,488]
[489,{"$f":"IF(A496>=#REF!,\"\",IF(A496<=#REF!,#REF!,#REF!))","v":{"$error":"#REF!"}},{"$f":"IF(A496>=#REF!,\"\",IF(A496<=#REF!,#REF!,#REF!))","v":{"$error":"#REF!"}},{"$f":"IF(A496>#REF!,\"\",#REF!)","v":{"$error":"#REF!"}},null,489,{"$f":"IF(F496>=#REF!,\"\",IF(F496<=#REF!,#REF!,#REF!))","v":{"$error":"#REF!"}},{"$f":"IF(F496>=#REF!,\"\",IF(F496<=#REF!,#REF!,#REF!))","v":{"$error":"#REF!"}},{"$f":"IF(F496>#REF!,\"\",PMT(#REF!/12,#REF!,-#REF!))","v":{"$error":"#REF!"}},null,null,null,null,489,{"$f":"IF(N496>#REF!,\"\",$L$7)","v":{"$error":"#REF!"}},{"$f":"IF(N496>=#REF!,\"\",IF(N496<=#REF!,#REF!,#REF!))","v":{"$error":"#REF!"}},{"$f":"IF(N496>#REF!,\"\",#REF!)","v":{"$error":"#REF!"}},null,null,null,null,489,{"$f":"IF(V496>#REF!,\"\",$T$7)","v":{"$error":"#REF!"}},{"$f":"IF(V496>=#REF!,\"\",IF(V496<=#REF!,#REF!,#REF!))","v":{"$error":"#REF!"}},{"$f":"IF(V496>#REF!,\"\",#REF!)","v":{"$error":"#REF!"}},null,null,null,null,null,null,null,489]
[490,{"$f":"IF(A497>=#REF!,\"\",IF(A497<=#REF!,#REF!,#REF!))","v":{"$error":"#REF!"}},{"$f":"IF(A497>=#REF!,\"\",IF(A497<=#REF!,#REF!,#REF!))","v":{"$error":"#REF!"}},{"$f":"IF(A497>#REF!,\"\",#REF!)","v":{"$error":"#REF!"}},null,490,{"$f":"IF(F497>=#REF!,\"\",IF(F497<=#REF!,#REF!,#REF!))","v":{"$error":"#REF!"}},{"$f":"IF(F497>=#REF!,\"\",IF(F497<=#REF!,#REF!,#REF!))","v":{"$error":"#REF!"}},{"$f":"IF(F497>#REF!,\"\",PMT(#REF!/12,#REF!,-#REF!))","v":{"$error":"#REF!"}},null,null,null,null,490,{"$f":"IF(N497>#REF!,\"\",$L$7)","v":{"$error":"#REF!"}},{"$f":"IF(N497>=#REF!,\"\",IF(N497<=#REF!,#REF!,#REF!))","v":{"$error":"#REF!"}},{"$f":"IF(N497>#REF!,\"\",#REF!)","v":{"$error":"#REF!"}},null,null,null,null,490,{"$f":"IF(V497>#REF!,\"\",$T$7)","v":{"$error":"#REF!"}},{"$f":"IF(V497>=#REF!,\"\",IF(V497<=#REF!,#REF!,#REF!))","v":{"$error":"#REF!"}},{"$f":"IF(V497>#REF!,\"\",#REF!)","v":{"$error":"#REF!"}},null,null,null,null,null,null,null,490]
[491,{"$f":"IF(A498>=#REF!,\"\",IF(A498<=#REF!,#REF!,#REF!))","v":{"$error":"#REF!"}},{"$f":"IF(A498>=#REF!,\"\",IF(A498<=#REF!,#REF!,#REF!))","v":{"$error":"#REF!"}},{"$f":"IF(A498>#REF!,\"\",#REF!)","v":{"$error":"#REF!"}},null,491,{"$f":"IF(F498>=#REF!,\"\",IF(F498<=#REF!,#REF!,#REF!))","v":{"$error":"#REF!"}},{"$f":"IF(F498>=#REF!,\"\",IF(F498<=#REF!,#REF!,#REF!))","v":{"$error":"#REF!"}},{"$f":"IF(F498>#REF!,\"\",PMT(#REF!/12,#REF!,-#REF!))","v":{"$error":"#REF!"}},null,null,null,null,491,{"$f":"IF(N498>#REF!,\"\",$L$7)","v":{"$error":"#REF!"}},{"$f":"IF(N498>=#REF!,\"\",IF(N498<=#REF!,#REF!,#REF!))","v":{"$error":"#REF!"}},{"$f":"IF(N498>#REF!,\"\",#REF!)","v":{"$error":"#REF!"}},null,null,null,null,491,{"$f":"IF(V498>#REF!,\"\",$T$7)","v":{"$error":"#REF!"}},{"$f":"IF(V498>=#REF!,\"\",IF(V498<=#REF!,#REF!,#REF!))","v":{"$error":"#REF!"}},{"$f":"IF(V498>#REF!,\"\",#REF!)","v":{"$error":"#REF!"}},null,null,null,null,null,null,null,491]
[492,{"$f":"IF(A499>=#REF!,\"\",IF(A499<=#REF!,#REF!,#REF!))","v":{"$error":"#REF!"}},{"$f":"IF(A499>=#REF!,\"\",IF(A499<=#REF!,#REF!,#REF!))","v":{"$error":"#REF!"}},{"$f":"IF(A499>#REF!,\"\",#REF!)","v":{"$error":"#REF!"}},null,492,{"$f":"IF(F499>=#REF!,\"\",IF(F499<=#REF!,#REF!,#REF!))","v":{"$error":"#REF!"}},{"$f":"IF(F499>=#REF!,\"\",IF(F499<=#REF!,#REF!,#REF!))","v":{"$error":"#REF!"}},{"$f":"IF(F499>#REF!,\"\",PMT(#REF!/12,#REF!,-#REF!))","v":{"$error":"#REF!"}},null,null,null,null,492,{"$f":"IF(N499>#REF!,\"\",$L$7)","v":{"$error":"#REF!"}},{"$f":"IF(N499>=#REF!,\"\",IF(N499<=#REF!,#REF!,#REF!))","v":{"$error":"#REF!"}},{"$f":"IF(N499>#REF!,\"\",#REF!)","v":{"$error":"#REF!"}},null,null,null,null,492,{"$f":"IF(V499>#REF!,\"\",$T$7)","v":{"$error":"#REF!"}},{"$f":"IF(V499>=#REF!,\"\",IF(V499<=#REF!,#REF!,#REF!))","v":{"$error":"#REF!"}},{"$f":"IF(V499>#REF!,\"\",#REF!)","v":{"$error":"#REF!"}},null,null,null,null,null,null,null,492]
[493,{"$f":"IF(A500>=#REF!,\"\",IF(A500<=#REF!,#REF!,#REF!))","v":{"$error":"#REF!"}},{"$f":"IF(A500>=#REF!,\"\",IF(A500<=#REF!,#REF!,#REF!))","v":{"$error":"#REF!"}},{"$f":"IF(A500>#REF!,\"\",#REF!)","v":{"$error":"#REF!"}},null,493,{"$f":"IF(F500>=#REF!,\"\",IF(F500<=#REF!,#REF!,#REF!))","v":{"$error":"#REF!"}},{"$f":"IF(F500>=#REF!,\"\",IF(F500<=#REF!,#REF!,#REF!))","v":{"$error":"#REF!"}},{"$f":"IF(F500>#REF!,\"\",PMT(#REF!/12,#REF!,-#REF!))","v":{"$error":"#REF!"}},null,null,null,null,493,{"$f":"IF(N500>#REF!,\"\",$L$7)","v":{"$error":"#REF!"}},{"$f":"IF(N500>=#REF!,\"\",IF(N500<=#REF!,#REF!,#REF!))","v":{"$error":"#REF!"}},{"$f":"IF(N500>#REF!,\"\",#REF!)","v":{"$error":"#REF!"}},null,null,null,null,493,{"$f":"IF(V500>#REF!,\"\",$T$7)","v":{"$error":"#REF!"}},{"$f":"IF(V500>=#REF!,\"\",IF(V500<=#REF!,#REF!,#REF!))","v":{"$error":"#REF!"}},{"$f":"IF(V500>#REF!,\"\",#REF!)","v":{"$error":"#REF!"}},null,null,null,null,null,null,null,493]
[494,{"$f":"IF(A501>=#REF!,\"\",IF(A501<=#REF!,#REF!,#REF!))","v":{"$error":"#REF!"}},{"$f":"IF(A501>=#REF!,\"\",IF(A501<=#REF!,#REF!,#REF!))","v":{"$error":"#REF!"}},{"$f":"IF(A501>#REF!,\"\",#REF!)","v":{"$error":"#REF!"}},null,494,{"$f":"IF(F501>=#REF!,\"\",IF(F501<=#REF!,#REF!,#REF!))","v":{"$error":"#REF!"}},{"$f":"IF(F501>=#REF!,\"\",IF(F501<=#REF!,#REF!,#REF!))","v":{"$error":"#REF!"}},{"$f":"IF(F501>#REF!,\"\",PMT(#REF!/12,#REF!,-#REF!))","v":{"$error":"#REF!"}},null,null,null,null,494,{"$f":"IF(N501>#REF!,\"\",$L$7)","v":{"$error":"#REF!"}},{"$f":"IF(N501>=#REF!,\"\",IF(N501<=#REF!,#REF!,#REF!))","v":{"$error":"#REF!"}},{"$f":"IF(N501>#REF!,\"\",#REF!)","v":{"$error":"#REF!"}},null,null,null,null,494,{"$f":"IF(V501>#REF!,\"\",$T$7)","v":{"$error":"#REF!"}},{"$f":"IF(V501>=#REF!,\"\",IF(V501<=#REF!,#REF!,#REF!))","v":{"$error":"#REF!"}},{"$f":"IF(V501>#REF!,\"\",#REF!)","v":{"$error":"#REF!"}},null,null,null,null,null,null,null,494]
[495,{"$f":"IF(A502>=#REF!,\"\",IF(A502<=#REF!,#REF!,#REF!))","v":{"$error":"#REF!"}},{"$f":"IF(A502>=#REF!,\"\",IF(A502<=#REF!,#REF!,#REF!))","v":{"$error":"#REF!"}},{"$f":"IF(A502>#REF!,\"\",#REF!)","v":{"$error":"#REF!"}},null,495,{"$f":"IF(F502>=#REF!,\"\",IF(F502<=#REF!,#REF!,#REF!))","v":{"$error":"#REF!"}},{"$f":"IF(F502>=#REF!,\"\",IF(F502<=#REF!,#REF!,#REF!))","v":{"$error":"#REF!"}},{"$f":"IF(F502>#REF!,\"\",PMT(#REF!/12,#REF!,-#REF!))","v":{"$error":"#REF!"}},null,null,null,null,495,{"$f":"IF(N502>#REF!,\"\",$L$7)","v":{"$error":"#REF!"}},{"$f":"IF(N502>=#REF!,\"\",IF(N502<=#REF!,#REF!,#REF!))","v":{"$error":"#REF!"}},{"$f":"IF(N502>#REF!,\"\",#REF!)","v":{"$error":"#REF!"}},null,null,null,null,495,{"$f":"IF(V502>#REF!,\"\",$T$7)","v":{"$error":"#REF!"}},{"$f":"IF(V502>=#REF!,\"\",IF(V502<=#REF!,#REF!,#REF!))","v":{"$error":"#REF!"}},{"$f":"IF(V502>#REF!,\"\",#REF!)","v":{"$error":"#REF!"}},null,null,null,null,null,null,null,495]
[496,{"$f":"IF(A503>=#REF!,\"\",IF(A503<=#REF!,#REF!,#REF!))","v":{"$error":"#REF!"}},{"$f":"IF(A503>=#REF!,\"\",IF(A503<=#REF!,#REF!,#REF!))","v":{"$error":"#REF!"}},{"$f":"IF(A503>#REF!,\"\",#REF!)","v":{"$error":"#REF!"}},null,496,{"$f":"IF(F503>=#REF!,\"\",IF(F503<=#REF!,#REF!,#REF!))","v":{"$error":"#REF!"}},{"$f":"IF(F503>=#REF!,\"\",IF(F503<=#REF!,#REF!,#REF!))","v":{"$error":"#REF!"}},{"$f":"IF(F503>#REF!,\"\",PMT(#REF!/12,#REF!,-#REF!))","v":{"$error":"#REF!"}},null,null,null,null,496,{"$f":"IF(N503>#REF!,\"\",$L$7)","v":{"$error":"#REF!"}},{"$f":"IF(N503>=#REF!,\"\",IF(N503<=#REF!,#REF!,#REF!))","v":{"$error":"#REF!"}},{"$f":"IF(N503>#REF!,\"\",#REF!)","v":{"$error":"#REF!"}},null,null,null,null,496,{"$f":"IF(V503>#REF!,\"\",$T$7)","v":{"$error":"#REF!"}},{"$f":"IF(V503>=#REF!,\"\",IF(V503<=#REF!,#REF!,#REF!))","v":{"$error":"#REF!"}},{"$f":"IF(V503>#REF!,\"\",#REF!)","v":{"$error":"#REF!"}},null,null,null,null,null,null,null,496]
[497,{"$f":"IF(A504>=#REF!,\"\",IF(A504<=#REF!,#REF!,#REF!))","v":{"$error":"#REF!"}},{"$f":"IF(A504>=#REF!,\"\",IF(A504<=#REF!,#REF!,#REF!))","v":{"$error":"#REF!"}},{"$f":"IF(A504>#REF!,\"\",#REF!)","v":{"$error":"#REF!"}},null,497,{"$f":"IF(F504>=#REF!,\"\",IF(F504<=#REF!,#REF!,#REF!))","v":{"$error":"#REF!"}},{"$f":"IF(F504>=#REF!,\"\",IF(F504<=#REF!,#REF!,#REF!))","v":{"$error":"#REF!"}},{"$f":"IF(F504>#REF!,\"\",PMT(#REF!/12,#REF!,-#REF!))","v":{"$error":"#REF!"}},null,null,null,null,497,{"$f":"IF(N504>#REF!,\"\",$L$7)","v":{"$error":"#REF!"}},{"$f":"IF(N504>=#REF!,\"\",IF(N504<=#REF!,#REF!,#REF!))","v":{"$error":"#REF!"}},{"$f":"IF(N504>#REF!,\"\",#REF!)","v":{"$error":"#REF!"}},null,null,null,null,497,{"$f":"IF(V504>#REF!,\"\",$T$7)","v":{"$error":"#REF!"}},{"$f":"IF(V504>=#REF!,\"\",IF(V504<=#REF!,#REF!,#REF!))","v":{"$error":"#REF!"}},{"$f":"IF(V504>#REF!,\"\",#REF!)","v":{"$error":"#REF!"}},null,null,null,null,null,null,null,497]
[498,{"$f":"IF(A505>=#REF!,\"\",IF(A505<=#REF!,#REF!,#REF!))","v":{"$error":"#REF!"}},{"$f":"IF(A505>=#REF!,\"\",IF(A505<=#REF!,#REF!,#REF!))","v":{"$error":"#REF!"}},{"$f":"IF(A505>#REF!,\"\",#REF!)","v":{"$error":"#REF!"}},null,498,{"$f":"IF(F505>=#REF!,\"\",IF(F505<=#REF!,#REF!,#REF!))","v":{"$error":"#REF!"}},{"$f":"IF(F505>=#REF!,\"\",IF(F505<=#REF!,#REF!,#REF!))","v":{"$error":"#REF!"}},{"$f":"IF(F505>#REF!,\"\",PMT(#REF!/12,#REF!,-#REF!))","v":{"$error":"#REF!"}},null,null,null,null,498,{"$f":"IF(N505>#REF!,\"\",$L$7)","v":{"$error":"#REF!"}},{"$f":"IF(N505>=#REF!,\"\",IF(N505<=#REF!,#REF!,#REF!))","v":{"$error":"#REF!"}},{"$f":"IF(N505>#REF!,\"\",#REF!)","v":{"$error":"#REF!"}},null,null,null,null,498,{"$f":"IF(V505>#REF!,\"\",$T$7)","v":{"$error":"#REF!"}},{"$f":"IF(V505>=#REF!,\"\",IF(V505<=#REF!,#REF!,#REF!))","v":{"$error":"#REF!"}},{"$f":"IF(V505>#REF!,\"\",#REF!)","v":{"$error":"#REF!"}},null,null,null,null,null,null,null,498]
[499,{"$f":"IF(A506>=#REF!,\"\",IF(A506<=#REF!,#REF!,#REF!))","v":{"$error":"#REF!"}},{"$f":"IF(A506>=#REF!,\"\",IF(A506<=#REF!,#REF!,#REF!))","v":{"$error":"#REF!"}},{"$f":"IF(A506>#REF!,\"\",#REF!)","v":{"$error":"#REF!"}},null,499,{"$f":"IF(F506>=#REF!,\"\",IF(F506<=#REF!,#REF!,#REF!))","v":{"$error":"#REF!"}},{"$f":"IF(F506>=#REF!,\"\",IF(F506<=#REF!,#REF!,#REF!))","v":{"$error":"#REF!"}},{"$f":"IF(F506>#REF!,\"\",PMT(#REF!/12,#REF!,-#REF!))","v":{"$error":"#REF!"}},null,null,null,null,499,{"$f":"IF(N506>#REF!,\"\",$L$7)","v":{"$error":"#REF!"}},{"$f":"IF(N506>=#REF!,\"\",IF(N506<=#REF!,#REF!,#REF!))","v":{"$error":"#REF!"}},{"$f":"IF(N506>#REF!,\"\",#REF!)","v":{"$error":"#REF!"}},null,null,null,null,499,{"$f":"IF(V506>#REF!,\"\",$T$7)","v":{"$error":"#REF!"}},{"$f":"IF(V506>=#REF!,\"\",IF(V506<=#REF!,#REF!,#REF!))","v":{"$error":"#REF!"}},{"$f":"IF(V506>#REF!,\"\",#REF!)","v":{"$error":"#REF!"}},null,null,null,null,null,null,null,499]
[500,{"$f":"IF(A507>=#REF!,\"\",IF(A507<=#REF!,#REF!,#REF!))","v":{"$error":"#REF!"}},{"$f":"IF(A507>=#REF!,\"\",IF(A507<=#REF!,#REF!,#REF!))","v":{"$error":"#REF!"}},{"$f":"IF(A507>#REF!,\"\",#REF!)","v":{"$error":"#REF!"}},null,500,{"$f":"IF(F507>=#REF!,\"\",IF(F507<=#REF!,#REF!,#REF!))","v":{"$error":"#REF!"}},{"$f":"IF(F507>=#REF!,\"\",IF(F507<=#REF!,#REF!,#REF!))","v":{"$error":"#REF!"}},{"$f":"IF(F507>#REF!,\"\",PMT(#REF!/12,#REF!,-#REF!))","v":{"$error":"#REF!"}},null,null,null,null,500,{"$f":"IF(N507>#REF!,\"\",$L$7)","v":{"$error":"#REF!"}},{"$f":"IF(N507>=#REF!,\"\",IF(N507<=#REF!,#REF!,#REF!))","v":{"$error":"#REF!"}},{"$f":"IF(N507>#REF!,\"\",#REF!)","v":{"$error":"#REF!"}},null,null,null,null,500,{"$f":"IF(V507>#REF!,\"\",$T$7)","v":{"$error":"#REF!"}},{"$f":"IF(V507>=#REF!,\"\",IF(V507<=#REF!,#REF!,#REF!))","v":{"$error":"#REF!"}},{"$f":"IF(V507>#REF!,\"\",#REF!)","v":{"$error":"#REF!"}},null,null,null,null,null,null,null,500]
[501,{"$f":"IF(A508>=#REF!,\"\",IF(A508<=#REF!,#REF!,#REF!))","v":{"$error":"#REF!"}},{"$f":"IF(A508>=#REF!,\"\",IF(A508<=#REF!,#REF!,#REF!))","v":{"$error":"#REF!"}},{"$f":"IF(A508>#REF!,\"\",#REF!)","v":{"$error":"#REF!"}},null,501,{"$f":"IF(F508>=#REF!,\"\",IF(F508<=#REF!,#REF!,#REF!))","v":{"$error":"#REF!"}},{"$f":"IF(F508>=#REF!,\"\",IF(F508<=#REF!,#REF!,#REF!))","v":{"$error":"#REF!"}},{"$f":"IF(F508>#REF!,\"\",PMT(#REF!/12,#REF!,-#REF!))","v":{"$error":"#REF!"}},null,null,null,null,501,{"$f":"IF(N508>#REF!,\"\",$L$7)","v":{"$error":"#REF!"}},{"$f":"IF(N508>=#REF!,\"\",IF(N508<=#REF!,#REF!,#REF!))","v":{"$error":"#REF!"}},{"$f":"IF(N508>#REF!,\"\",#REF!)","v":{"$error":"#REF!"}},null,null,null,null,501,{"$f":"IF(V508>#REF!,\"\",$T$7)","v":{"$error":"#REF!"}},{"$f":"IF(V508>=#REF!,\"\",IF(V508<=#REF!,#REF!,#REF!))","v":{"$error":"#REF!"}},{"$f":"IF(V508>#REF!,\"\",#REF!)","v":{"$error":"#REF!"}},null,null,null,null,null,null,null,501]
[502,{"$f":"IF(A509>=#REF!,\"\",IF(A509<=#REF!,#REF!,#REF!))","v":{"$error":"#REF!"}},{"$f":"IF(A509>=#REF!,\"\",IF(A509<=#REF!,#REF!,#REF!))","v":{"$error":"#REF!"}},{"$f":"IF(A509>#REF!,\"\",#REF!)","v":{"$error":"#REF!"}},null,502,{"$f":"IF(F509>=#REF!,\"\",IF(F509<=#REF!,#REF!,#REF!))","v":{"$error":"#REF!"}},{"$f":"IF(F509>=#REF!,\"\",IF(F509<=#REF!,#REF!,#REF!))","v":{"$error":"#REF!"}},{"$f":"IF(F509>#REF!,\"\",PMT(#REF!/12,#REF!,-#REF!))","v":{"$error":"#REF!"}},null,null,null,null,502,{"$f":"IF(N509>#REF!,\"\",$L$7)","v":{"$error":"#REF!"}},{"$f":"IF(N509>=#REF!,\"\",IF(N509<=#REF!,#REF!,#REF!))","v":{"$error":"#REF!"}},{"$f":"IF(N509>#REF!,\"\",#REF!)","v":{"$error":"#REF!"}},null,null,null,null,502,{"$f":"IF(V509>#REF!,\"\",$T$7)","v":{"$error":"#REF!"}},{"$f":"IF(V509>=#REF!,\"\",IF(V509<=#REF!,#REF!,#REF!))","v":{"$error":"#REF!"}},{"$f":"IF(V509>#REF!,\"\",#REF!)","v":{"$error":"#REF!"}},null,null,null,null,null,null,null,502]
[503,{"$f":"IF(A510>=#REF!,\"\",IF(A510<=#REF!,#REF!,#REF!))","v":{"$error":"#REF!"}},{"$f":"IF(A510>=#REF!,\"\",IF(A510<=#REF!,#REF!,#REF!))","v":{"$error":"#REF!"}},{"$f":"IF(A510>#REF!,\"\",#REF!)","v":{"$error":"#REF!"}},null,503,{"$f":"IF(F510>=#REF!,\"\",IF(F510<=#REF!,#REF!,#REF!))","v":{"$error":"#REF!"}},{"$f":"IF(F510>=#REF!,\"\",IF(F510<=#REF!,#REF!,#REF!))","v":{"$error":"#REF!"}},{"$f":"IF(F510>#REF!,\"\",PMT(#REF!/12,#REF!,-#REF!))","v":{"$error":"#REF!"}},null,null,null,null,503,{"$f":"IF(N510>#REF!,\"\",$L$7)","v":{"$error":"#REF!"}},{"$f":"IF(N510>=#REF!,\"\",IF(N510<=#REF!,#REF!,#REF!))","v":{"$error":"#REF!"}},{"$f":"IF(N510>#REF!,\"\",#REF!)","v":{"$error":"#REF!"}},null,null,null,null,503,{"$f":"IF(V510>#REF!,\"\",$T$7)","v":{"$error":"#REF!"}},{"$f":"IF(V510>=#REF!,\"\",IF(V510<=#REF!,#REF!,#REF!))","v":{"$error":"#REF!"}},{"$f":"IF(V510>#REF!,\"\",#REF!)","v":{"$error":"#REF!"}},null,null,null,null,null,null,null,503]
[504,{"$f":"IF(A511>=#REF!,\"\",IF(A511<=#REF!,#REF!,#REF!))","v":{"$error":"#REF!"}},{"$f":"IF(A511>=#REF!,\"\",IF(A511<=#REF!,#REF!,#REF!))","v":{"$error":"#REF!"}},{"$f":"IF(A511>#REF!,\"\",#REF!)","v":{"$error":"#REF!"}},null,504,{"$f":"IF(F511>=#REF!,\"\",IF(F511<=#REF!,#REF!,#REF!))","v":{"$error":"#REF!"}},{"$f":"IF(F511>=#REF!,\"\",IF(F511<=#REF!,#REF!,#REF!))","v":{"$error":"#REF!"}},{"$f":"IF(F511>#REF!,\"\",PMT(#REF!/12,#REF!,-#REF!))","v":{"$error":"#REF!"}},null,null,null,null,504,{"$f":"IF(N511>#REF!,\"\",$L$7)","v":{"$error":"#REF!"}},{"$f":"IF(N511>=#REF!,\"\",IF(N511<=#REF!,#REF!,#REF!))","v":{"$error":"#REF!"}},{"$f":"IF(N511>#REF!,\"\",#REF!)","v":{"$error":"#REF!"}},null,null,null,null,504,{"$f":"IF(V511>#REF!,\"\",$T$7)","v":{"$error":"#REF!"}},{"$f":"IF(V511>=#REF!,\"\",IF(V511<=#REF!,#REF!,#REF!))","v":{"$error":"#REF!"}},{"$f":"IF(V511>#REF!,\"\",#REF!)","v":{"$error":"#REF!"}},null,null,null,null,null,null,null,504]
[505,{"$f":"IF(A512>=#REF!,\"\",IF(A512<=#REF!,#REF!,#REF!))","v":{"$error":"#REF!"}},{"$f":"IF(A512>=#REF!,\"\",IF(A512<=#REF!,#REF!,#REF!))","v":{"$error":"#REF!"}},{"$f":"IF(A512>#REF!,\"\",#REF!)","v":{"$error":"#REF!"}},null,505,{"$f":"IF(F512>=#REF!,\"\",IF(F512<=#REF!,#REF!,#REF!))","v":{"$error":"#REF!"}},{"$f":"IF(F512>=#REF!,\"\",IF(F512<=#REF!,#REF!,#REF!))","v":{"$error":"#REF!"}},{"$f":"IF(F512>#REF!,\"\",PMT(#REF!/12,#REF!,-#REF!))","v":{"$error":"#REF!"}},null,null,null,null,505,{"$f":"IF(N512>#REF!,\"\",$L$7)","v":{"$error":"#REF!"}},{"$f":"IF(N512>=#REF!,\"\",IF(N512<=#REF!,#REF!,#REF!))","v":{"$error":"#REF!"}},{"$f":"IF(N512>#REF!,\"\",#REF!)","v":{"$error":"#REF!"}},null,null,null,null,505,{"$f":"IF(V512>#REF!,\"\",$T$7)","v":{"$error":"#REF!"}},{"$f":"IF(V512>=#REF!,\"\",IF(V512<=#REF!,#REF!,#REF!))","v":{"$error":"#REF!"}},{"$f":"IF(V512>#REF!,\"\",#REF!)","v":{"$error":"#REF!"}},null,null,null,null,null,null,null,505]
[506,{"$f":"IF(A513>=#REF!,\"\",IF(A513<=#REF!,#REF!,#REF!))","v":{"$error":"#REF!"}},{"$f":"IF(A513>=#REF!,\"\",IF(A513<=#REF!,#REF!,#REF!))","v":{"$error":"#REF!"}},{"$f":"IF(A513>#REF!,\"\",#REF!)","v":{"$error":"#REF!"}},null,506,{"$f":"IF(F513>=#REF!,\"\",IF(F513<=#REF!,#REF!,#REF!))","v":{"$error":"#REF!"}},{"$f":"IF(F513>=#REF!,\"\",IF(F513<=#REF!,#REF!,#REF!))","v":{"$error":"#REF!"}},{"$f":"IF(F513>#REF!,\"\",PMT(#REF!/12,#REF!,-#REF!))","v":{"$error":"#REF!"}},null,null,null,null,506,{"$f":"IF(N513>#REF!,\"\",$L$7)","v":{"$error":"#REF!"}},{"$f":"IF(N513>=#REF!,\"\",IF(N513<=#REF!,#REF!,#REF!))","v":{"$error":"#REF!"}},{"$f":"IF(N513>#REF!,\"\",#REF!)","v":{"$error":"#REF!"}},null,null,null,null,506,{"$f":"IF(V513>#REF!,\"\",$T$7)","v":{"$error":"#REF!"}},{"$f":"IF(V513>=#REF!,\"\",IF(V513<=#REF!,#REF!,#REF!))","v":{"$error":"#REF!"}},{"$f":"IF(V513>#REF!,\"\",#REF!)","v":{"$error":"#REF!"}},null,null,null,null,null,null,null,506]
[507,{"$f":"IF(A514>=#REF!,\"\",IF(A514<=#REF!,#REF!,#REF!))","v":{"$error":"#REF!"}},{"$f":"IF(A514>=#REF!,\"\",IF(A514<=#REF!,#REF!,#REF!))","v":{"$error":"#REF!"}},{"$f":"IF(A514>#REF!,\"\",#REF!)","v":{"$error":"#REF!"}},null,507,{"$f":"IF(F514>=#REF!,\"\",IF(F514<=#REF!,#REF!,#REF!))","v":{"$error":"#REF!"}},{"$f":"IF(F514>=#REF!,\"\",IF(F514<=#REF!,#REF!,#REF!))","v":{"$error":"#REF!"}},{"$f":"IF(F514>#REF!,\"\",PMT(#REF!/12,#REF!,-#REF!))","v":{"$error":"#REF!"}},null,null,null,null,507,{"$f":"IF(N514>#REF!,\"\",$L$7)","v":{"$error":"#REF!"}},{"$f":"IF(N514>=#REF!,\"\",IF(N514<=#REF!,#REF!,#REF!))","v":{"$error":"#REF!"}},{"$f":"IF(N514>#REF!,\"\",#REF!)","v":{"$error":"#REF!"}},null,null,null,null,507,{"$f":"IF(V514>#REF!,\"\",$T$7)","v":{"$error":"#REF!"}},{"$f":"IF(V514>=#REF!,\"\",IF(V514<=#REF!,#REF!,#REF!))","v":{"$error":"#REF!"}},{"$f":"IF(V514>#REF!,\"\",#REF!)","v":{"$error":"#REF!"}},null,null,null,null,null,null,null,507]
[508,{"$f":"IF(A515>=#REF!,\"\",IF(A515<=#REF!,#REF!,#REF!))","v":{"$error":"#REF!"}},{"$f":"IF(A515>=#REF!,\"\",IF(A515<=#REF!,#REF!,#REF!))","v":{"$error":"#REF!"}},{"$f":"IF(A515>#REF!,\"\",#REF!)","v":{"$error":"#REF!"}},null,508,{"$f":"IF(F515>=#REF!,\"\",IF(F515<=#REF!,#REF!,#REF!))","v":{"$error":"#REF!"}},{"$f":"IF(F515>=#REF!,\"\",IF(F515<=#REF!,#REF!,#REF!))","v":{"$error":"#REF!"}},{"$f":"IF(F515>#REF!,\"\",PMT(#REF!/12,#REF!,-#REF!))","v":{"$error":"#REF!"}},null,null,null,null,508,{"$f":"IF(N515>#REF!,\"\",$L$7)","v":{"$error":"#REF!"}},{"$f":"IF(N515>=#REF!,\"\",IF(N515<=#REF!,#REF!,#REF!))","v":{"$error":"#REF!"}},{"$f":"IF(N515>#REF!,\"\",#REF!)","v":{"$error":"#REF!"}},null,null,null,null,508,{"$f":"IF(V515>#REF!,\"\",$T$7)","v":{"$error":"#REF!"}},{"$f":"IF(V515>=#REF!,\"\",IF(V515<=#REF!,#REF!,#REF!))","v":{"$error":"#REF!"}},{"$f":"IF(V515>#REF!,\"\",#REF!)","v":{"$error":"#REF!"}},null,null,null,null,null,null,null,508]
[509,{"$f":"IF(A516>=#REF!,\"\",IF(A516<=#REF!,#REF!,#REF!))","v":{"$error":"#REF!"}},{"$f":"IF(A516>=#REF!,\"\",IF(A516<=#REF!,#REF!,#REF!))","v":{"$error":"#REF!"}},{"$f":"IF(A516>#REF!,\"\",#REF!)","v":{"$error":"#REF!"}},null,509,{"$f":"IF(F516>=#REF!,\"\",IF(F516<=#REF!,#REF!,#REF!))","v":{"$error":"#REF!"}},{"$f":"IF(F516>=#REF!,\"\",IF(F516<=#REF!,#REF!,#REF!))","v":{"$error":"#REF!"}},{"$f":"IF(F516>#REF!,\"\",PMT(#REF!/12,#REF!,-#REF!))","v":{"$error":"#REF!"}},null,null,null,null,509,{"$f":"IF(N516>#REF!,\"\",$L$7)","v":{"$error":"#REF!"}},{"$f":"IF(N516>=#REF!,\"\",IF(N516<=#REF!,#REF!,#REF!))","v":{"$error":"#REF!"}},{"$f":"IF(N516>#REF!,\"\",#REF!)","v":{"$error":"#REF!"}},null,null,null,null,509,{"$f":"IF(V516>#REF!,\"\",$T$7)","v":{"$error":"#REF!"}},{"$f":"IF(V516>=#REF!,\"\",IF(V516<=#REF!,#REF!,#REF!))","v":{"$error":"#REF!"}},{"$f":"IF(V516>#REF!,\"\",#REF!)","v":{"$error":"#REF!"}},null,null,null,null,null,null,null,509]
[510,{"$f":"IF(A517>=#REF!,\"\",IF(A517<=#REF!,#REF!,#REF!))","v":{"$error":"#REF!"}},{"$f":"IF(A517>=#REF!,\"\",IF(A517<=#REF!,#REF!,#REF!))","v":{"$error":"#REF!"}},{"$f":"IF(A517>#REF!,\"\",#REF!)","v":{"$error":"#REF!"}},null,510,{"$f":"IF(F517>=#REF!,\"\",IF(F517<=#REF!,#REF!,#REF!))","v":{"$error":"#REF!"}},{"$f":"IF(F517>=#REF!,\"\",IF(F517<=#REF!,#REF!,#REF!))","v":{"$error":"#REF!"}},{"$f":"IF(F517>#REF!,\"\",PMT(#REF!/12,#REF!,-#REF!))","v":{"$error":"#REF!"}},null,null,null,null,510,{"$f":"IF(N517>#REF!,\"\",$L$7)","v":{"$error":"#REF!"}},{"$f":"IF(N517>=#REF!,\"\",IF(N517<=#REF!,#REF!,#REF!))","v":{"$error":"#REF!"}},{"$f":"IF(N517>#REF!,\"\",#REF!)","v":{"$error":"#REF!"}},null,null,null,null,510,{"$f":"IF(V517>#REF!,\"\",$T$7)","v":{"$error":"#REF!"}},{"$f":"IF(V517>=#REF!,\"\",IF(V517<=#REF!,#REF!,#REF!))","v":{"$error":"#REF!"}},{"$f":"IF(V517>#REF!,\"\",#REF!)","v":{"$error":"#REF!"}},null,null,null,null,null,null,null,510]
[511,{"$f":"IF(A518>=#REF!,\"\",IF(A518<=#REF!,#REF!,#REF!))","v":{"$error":"#REF!"}},{"$f":"IF(A518>=#REF!,\"\",IF(A518<=#REF!,#REF!,#REF!))","v":{"$error":"#REF!"}},{"$f":"IF(A518>#REF!,\"\",#REF!)","v":{"$error":"#REF!"}},null,511,{"$f":"IF(F518>=#REF!,\"\",IF(F518<=#REF!,#REF!,#REF!))","v":{"$error":"#REF!"}},{"$f":"IF(F518>=#REF!,\"\",IF(F518<=#REF!,#REF!,#REF!))","v":{"$error":"#REF!"}},{"$f":"IF(F518>#REF!,\"\",PMT(#REF!/12,#REF!,-#REF!))","v":{"$error":"#REF!"}},null,null,null,null,511,{"$f":"IF(N518>#REF!,\"\",$L$7)","v":{"$error":"#REF!"}},{"$f":"IF(N518>=#REF!,\"\",IF(N518<=#REF!,#REF!,#REF!))","v":{"$error":"#REF!"}},{"$f":"IF(N518>#REF!,\"\",#REF!)","v":{"$error":"#REF!"}},null,null,null,null,511,{"$f":"IF(V518>#REF!,\"\",$T$7)","v":{"$error":"#REF!"}},{"$f":"IF(V518>=#REF!,\"\",IF(V518<=#REF!,#REF!,#REF!))","v":{"$error":"#REF!"}},{"$f":"IF(V518>#REF!,\"\",#REF!)","v":{"$error":"#REF!"}},null,null,null,null,null,null,null,511]
[512,{"$f":"IF(A519>=#REF!,\"\",IF(A519<=#REF!,#REF!,#REF!))","v":{"$error":"#REF!"}},{"$f":"IF(A519>=#REF!,\"\",IF(A519<=#REF!,#REF!,#REF!))","v":{"$error":"#REF!"}},{"$f":"IF(A519>#REF!,\"\",#REF!)","v":{"$error":"#REF!"}},null,512,{"$f":"IF(F519>=#REF!,\"\",IF(F519<=#REF!,#REF!,#REF!))","v":{"$error":"#REF!"}},{"$f":"IF(F519>=#REF!,\"\",IF(F519<=#REF!,#REF!,#REF!))","v":{"$error":"#REF!"}},{"$f":"IF(F519>#REF!,\"\",PMT(#REF!/12,#REF!,-#REF!))","v":{"$error":"#REF!"}},null,null,null,null,512,{"$f":"IF(N519>#REF!,\"\",$L$7)","v":{"$error":"#REF!"}},{"$f":"IF(N519>=#REF!,\"\",IF(N519<=#REF!,#REF!,#REF!))","v":{"$error":"#REF!"}},{"$f":"IF(N519>#REF!,\"\",#REF!)","v":{"$error":"#REF!"}},null,null,null,null,512,{"$f":"IF(V519>#REF!,\"\",$T$7)","v":{"$error":"#REF!"}},{"$f":"IF(V519>=#REF!,\"\",IF(V519<=#REF!,#REF!,#REF!))","v":{"$error":"#REF!"}},{"$f":"IF(V519>#REF!,\"\",#REF!)","v":{"$error":"#REF!"}},null,null,null,null,null,null,null,512]
[513,{"$f":"IF(A520>=#REF!,\"\",IF(A520<=#REF!,#REF!,#REF!))","v":{"$error":"#REF!"}},{"$f":"IF(A520>=#REF!,\"\",IF(A520<=#REF!,#REF!,#REF!))","v":{"$error":"#REF!"}},{"$f":"IF(A520>#REF!,\"\",#REF!)","v":{"$error":"#REF!"}},null,513,{"$f":"IF(F520>=#REF!,\"\",IF(F520<=#REF!,#REF!,#REF!))","v":{"$error":"#REF!"}},{"$f":"IF(F520>=#REF!,\"\",IF(F520<=#REF!,#REF!,#REF!))","v":{"$error":"#REF!"}},{"$f":"IF(F520>#REF!,\"\",PMT(#REF!/12,#REF!,-#REF!))","v":{"$error":"#REF!"}},null,null,null,null,513,{"$f":"IF(N520>#REF!,\"\",$L$7)","v":{"$error":"#REF!"}},{"$f":"IF(N520>=#REF!,\"\",IF(N520<=#REF!,#REF!,#REF!))","v":{"$error":"#REF!"}},{"$f":"IF(N520>#REF!,\"\",#REF!)","v":{"$error":"#REF!"}},null,null,null,null,513,{"$f":"IF(V520>#REF!,\"\",$T$7)","v":{"$error":"#REF!"}},{"$f":"IF(V520>=#REF!,\"\",IF(V520<=#REF!,#REF!,#REF!))","v":{"$error":"#REF!"}},{"$f":"IF(V520>#REF!,\"\",#REF!)","v":{"$error":"#REF!"}},null,null,null,null,null,null,null,513]
[514,{"$f":"IF(A521>=#REF!,\"\",IF(A521<=#REF!,#REF!,#REF!))","v":{"$error":"#REF!"}},{"$f":"IF(A521>=#REF!,\"\",IF(A521<=#REF!,#REF!,#REF!))","v":{"$error":"#REF!"}},{"$f":"IF(A521>#REF!,\"\",#REF!)","v":{"$error":"#REF!"}},null,514,{"$f":"IF(F521>=#REF!,\"\",IF(F521<=#REF!,#REF!,#REF!))","v":{"$error":"#REF!"}},{"$f":"IF(F521>=#REF!,\"\",IF(F521<=#REF!,#REF!,#REF!))","v":{"$error":"#REF!"}},{"$f":"IF(F521>#REF!,\"\",PMT(#REF!/12,#REF!,-#REF!))","v":{"$error":"#REF!"}},null,null,null,null,514,{"$f":"IF(N521>#REF!,\"\",$L$7)","v":{"$error":"#REF!"}},{"$f":"IF(N521>=#REF!,\"\",IF(N521<=#REF!,#REF!,#REF!))","v":{"$error":"#REF!"}},{"$f":"IF(N521>#REF!,\"\",#REF!)","v":{"$error":"#REF!"}},null,null,null,null,514,{"$f":"IF(V521>#REF!,\"\",$T$7)","v":{"$error":"#REF!"}},{"$f":"IF(V521>=#REF!,\"\",IF(V521<=#REF!,#REF!,#REF!))","v":{"$error":"#REF!"}},{"$f":"IF(V521>#REF!,\"\",#REF!)","v":{"$error":"#REF!"}},null,null,null,null,null,null,null,514]
[515,{"$f":"IF(A522>=#REF!,\"\",IF(A522<=#REF!,#REF!,#REF!))","v":{"$error":"#REF!"}},{"$f":"IF(A522>=#REF!,\"\",IF(A522<=#REF!,#REF!,#REF!))","v":{"$error":"#REF!"}},{"$f":"IF(A522>#REF!,\"\",#REF!)","v":{"$error":"#REF!"}},null,515,{"$f":"IF(F522>=#REF!,\"\",IF(F522<=#REF!,#REF!,#REF!))","v":{"$error":"#REF!"}},{"$f":"IF(F522>=#REF!,\"\",IF(F522<=#REF!,#REF!,#REF!))","v":{"$error":"#REF!"}},{"$f":"IF(F522>#REF!,\"\",PMT(#REF!/12,#REF!,-#REF!))","v":{"$error":"#REF!"}},null,null,null,null,515,{"$f":"IF(N522>#REF!,\"\",$L$7)","v":{"$error":"#REF!"}},{"$f":"IF(N522>=#REF!,\"\",IF(N522<=#REF!,#REF!,#REF!))","v":{"$error":"#REF!"}},{"$f":"IF(N522>#REF!,\"\",#REF!)","v":{"$error":"#REF!"}},null,null,null,null,515,{"$f":"IF(V522>#REF!,\"\",$T$7)","v":{"$error":"#REF!"}},{"$f":"IF(V522>=#REF!,\"\",IF(V522<=#REF!,#REF!,#REF!))","v":{"$error":"#REF!"}},{"$f":"IF(V522>#REF!,\"\",#REF!)","v":{"$error":"#REF!"}},null,null,null,null,null,null,null,515]
[516,{"$f":"IF(A523>=#REF!,\"\",IF(A523<=#REF!,#REF!,#REF!))","v":{"$error":"#REF!"}},{"$f":"IF(A523>=#REF!,\"\",IF(A523<=#REF!,#REF!,#REF!))","v":{"$error":"#REF!"}},{"$f":"IF(A523>#REF!,\"\",#REF!)","v":{"$error":"#REF!"}},null,516,{"$f":"IF(F523>=#REF!,\"\",IF(F523<=#REF!,#REF!,#REF!))","v":{"$error":"#REF!"}},{"$f":"IF(F523>=#REF!,\"\",IF(F523<=#REF!,#REF!,#REF!))","v":{"$error":"#REF!"}},{"$f":"IF(F523>#REF!,\"\",PMT(#REF!/12,#REF!,-#REF!))","v":{"$error":"#REF!"}},null,null,null,null,516,{"$f":"IF(N523>#REF!,\"\",$L$7)","v":{"$error":"#REF!"}},{"$f":"IF(N523>=#REF!,\"\",IF(N523<=#REF!,#REF!,#REF!))","v":{"$error":"#REF!"}},{"$f":"IF(N523>#REF!,\"\",#REF!)","v":{"$error":"#REF!"}},null,null,null,null,516,{"$f":"IF(V523>#REF!,\"\",$T$7)","v":{"$error":"#REF!"}},{"$f":"IF(V523>=#REF!,\"\",IF(V523<=#REF!,#REF!,#REF!))","v":{"$error":"#REF!"}},{"$f":"IF(V523>#REF!,\"\",#REF!)","v":{"$error":"#REF!"}},null,null,null,null,null,null,null,516]
[517,{"$f":"IF(A524>=#REF!,\"\",IF(A524<=#REF!,#REF!,#REF!))","v":{"$error":"#REF!"}},{"$f":"IF(A524>=#REF!,\"\",IF(A524<=#REF!,#REF!,#REF!))","v":{"$error":"#REF!"}},{"$f":"IF(A524>#REF!,\"\",#REF!)","v":{"$error":"#REF!"}},null,517,{"$f":"IF(F524>=#REF!,\"\",IF(F524<=#REF!,#REF!,#REF!))","v":{"$error":"#REF!"}},{"$f":"IF(F524>=#REF!,\"\",IF(F524<=#REF!,#REF!,#REF!))","v":{"$error":"#REF!"}},{"$f":"IF(F524>#REF!,\"\",PMT(#REF!/12,#REF!,-#REF!))","v":{"$error":"#REF!"}},null,null,null,null,517,{"$f":"IF(N524>#REF!,\"\",$L$7)","v":{"$error":"#REF!"}},{"$f":"IF(N524>=#REF!,\"\",IF(N524<=#REF!,#REF!,#REF!))","v":{"$error":"#REF!"}},{"$f":"IF(N524>#REF!,\"\",#REF!)","v":{"$error":"#REF!"}},null,null,null,null,517,{"$f":"IF(V524>#REF!,\"\",$T$7)","v":{"$error":"#REF!"}},{"$f":"IF(V524>=#REF!,\"\",IF(V524<=#REF!,#REF!,#REF!))","v":{"$error":"#REF!"}},{"$f":"IF(V524>#REF!,\"\",#REF!)","v":{"$error":"#REF!"}},null,null,null,null,null,null,null,517]
[518,{"$f":"IF(A525>=#REF!,\"\",IF(A525<=#REF!,#REF!,#REF!))","v":{"$error":"#REF!"}},{"$f":"IF(A525>=#REF!,\"\",IF(A525<=#REF!,#REF!,#REF!))","v":{"$error":"#REF!"}},{"$f":"IF(A525>#REF!,\"\",#REF!)","v":{"$error":"#REF!"}},null,518,{"$f":"IF(F525>=#REF!,\"\",IF(F525<=#REF!,#REF!,#REF!))","v":{"$error":"#REF!"}},{"$f":"IF(F525>=#REF!,\"\",IF(F525<=#REF!,#REF!,#REF!))","v":{"$error":"#REF!"}},{"$f":"IF(F525>#REF!,\"\",PMT(#REF!/12,#REF!,-#REF!))","v":{"$error":"#REF!"}},null,null,null,null,518,{"$f":"IF(N525>#REF!,\"\",$L$7)","v":{"$error":"#REF!"}},{"$f":"IF(N525>=#REF!,\"\",IF(N525<=#REF!,#REF!,#REF!))","v":{"$error":"#REF!"}},{"$f":"IF(N525>#REF!,\"\",#REF!)","v":{"$error":"#REF!"}},null,null,null,null,518,{"$f":"IF(V525>#REF!,\"\",$T$7)","v":{"$error":"#REF!"}},{"$f":"IF(V525>=#REF!,\"\",IF(V525<=#REF!,#REF!,#REF!))","v":{"$error":"#REF!"}},{"$f":"IF(V525>#REF!,\"\",#REF!)","v":{"$error":"#REF!"}},null,null,null,null,null,null,null,518]
[519,{"$f":"IF(A526>=#REF!,\"\",IF(A526<=#REF!,#REF!,#REF!))","v":{"$error":"#REF!"}},{"$f":"IF(A526>=#REF!,\"\",IF(A526<=#REF!,#REF!,#REF!))","v":{"$error":"#REF!"}},{"$f":"IF(A526>#REF!,\"\",#REF!)","v":{"$error":"#REF!"}},null,519,{"$f":"IF(F526>=#REF!,\"\",IF(F526<=#REF!,#REF!,#REF!))","v":{"$error":"#REF!"}},{"$f":"IF(F526>=#REF!,\"\",IF(F526<=#REF!,#REF!,#REF!))","v":{"$error":"#REF!"}},{"$f":"IF(F526>#REF!,\"\",PMT(#REF!/12,#REF!,-#REF!))","v":{"$error":"#REF!"}},null,null,null,null,519,{"$f":"IF(N526>#REF!,\"\",$L$7)","v":{"$error":"#REF!"}},{"$f":"IF(N526>=#REF!,\"\",IF(N526<=#REF!,#REF!,#REF!))","v":{"$error":"#REF!"}},{"$f":"IF(N526>#REF!,\"\",#REF!)","v":{"$error":"#REF!"}},null,null,null,null,519,{"$f":"IF(V526>#REF!,\"\",$T$7)","v":{"$error":"#REF!"}},{"$f":"IF(V526>=#REF!,\"\",IF(V526<=#REF!,#REF!,#REF!))","v":{"$error":"#REF!"}},{"$f":"IF(V526>#REF!,\"\",#REF!)","v":{"$error":"#REF!"}},null,null,null,null,null,null,null,519]
[520,{"$f":"IF(A527>=#REF!,\"\",IF(A527<=#REF!,#REF!,#REF!))","v":{"$error":"#REF!"}},{"$f":"IF(A527>=#REF!,\"\",IF(A527<=#REF!,#REF!,#REF!))","v":{"$error":"#REF!"}},{"$f":"IF(A527>#REF!,\"\",#REF!)","v":{"$error":"#REF!"}},null,520,{"$f":"IF(F527>=#REF!,\"\",IF(F527<=#REF!,#REF!,#REF!))","v":{"$error":"#REF!"}},{"$f":"IF(F527>=#REF!,\"\",IF(F527<=#REF!,#REF!,#REF!))","v":{"$error":"#REF!"}},{"$f":"IF(F527>#REF!,\"\",PMT(#REF!/12,#REF!,-#REF!))","v":{"$error":"#REF!"}},null,null,null,null,520,{"$f":"IF(N527>#REF!,\"\",$L$7)","v":{"$error":"#REF!"}},{"$f":"IF(N527>=#REF!,\"\",IF(N527<=#REF!,#REF!,#REF!))","v":{"$error":"#REF!"}},{"$f":"IF(N527>#REF!,\"\",#REF!)","v":{"$error":"#REF!"}},null,null,null,null,520,{"$f":"IF(V527>#REF!,\"\",$T$7)","v":{"$error":"#REF!"}},{"$f":"IF(V527>=#REF!,\"\",IF(V527<=#REF!,#REF!,#REF!))","v":{"$error":"#REF!"}},{"$f":"IF(V527>#REF!,\"\",#REF!)","v":{"$error":"#REF!"}},null,null,null,null,null,null,null,520]
[521,{"$f":"IF(A528>=#REF!,\"\",IF(A528<=#REF!,#REF!,#REF!))","v":{"$error":"#REF!"}},{"$f":"IF(A528>=#REF!,\"\",IF(A528<=#REF!,#REF!,#REF!))","v":{"$error":"#REF!"}},{"$f":"IF(A528>#REF!,\"\",#REF!)","v":{"$error":"#REF!"}},null,521,{"$f":"IF(F528>=#REF!,\"\",IF(F528<=#REF!,#REF!,#REF!))","v":{"$error":"#REF!"}},{"$f":"IF(F528>=#REF!,\"\",IF(F528<=#REF!,#REF!,#REF!))","v":{"$error":"#REF!"}},{"$f":"IF(F528>#REF!,\"\",PMT(#REF!/12,#REF!,-#REF!))","v":{"$error":"#REF!"}},null,null,null,null,521,{"$f":"IF(N528>#REF!,\"\",$L$7)","v":{"$error":"#REF!"}},{"$f":"IF(N528>=#REF!,\"\",IF(N528<=#REF!,#REF!,#REF!))","v":{"$error":"#REF!"}},{"$f":"IF(N528>#REF!,\"\",#REF!)","v":{"$error":"#REF!"}},null,null,null,null,521,{"$f":"IF(V528>#REF!,\"\",$T$7)","v":{"$error":"#REF!"}},{"$f":"IF(V528>=#REF!,\"\",IF(V528<=#REF!,#REF!,#REF!))","v":{"$error":"#REF!"}},{"$f":"IF(V528>#REF!,\"\",#REF!)","v":{"$error":"#REF!"}},null,null,null,null,null,null,null,521]
[522,{"$f":"IF(A529>=#REF!,\"\",IF(A529<=#REF!,#REF!,#REF!))","v":{"$error":"#REF!"}},{"$f":"IF(A529>=#REF!,\"\",IF(A529<=#REF!,#REF!,#REF!))","v":{"$error":"#REF!"}},{"$f":"IF(A529>#REF!,\"\",#REF!)","v":{"$error":"#REF!"}},null,522,{"$f":"IF(F529>=#REF!,\"\",IF(F529<=#REF!,#REF!,#REF!))","v":{"$error":"#REF!"}},{"$f":"IF(F529>=#REF!,\"\",IF(F529<=#REF!,#REF!,#REF!))","v":{"$error":"#REF!"}},{"$f":"IF(F529>#REF!,\"\",PMT(#REF!/12,#REF!,-#REF!))","v":{"$error":"#REF!"}},null,null,null,null,522,{"$f":"IF(N529>#REF!,\"\",$L$7)","v":{"$error":"#REF!"}},{"$f":"IF(N529>=#REF!,\"\",IF(N529<=#REF!,#REF!,#REF!))","v":{"$error":"#REF!"}},{"$f":"IF(N529>#REF!,\"\",#REF!)","v":{"$error":"#REF!"}},null,null,null,null,522,{"$f":"IF(V529>#REF!,\"\",$T$7)","v":{"$error":"#REF!"}},{"$f":"IF(V529>=#REF!,\"\",IF(V529<=#REF!,#REF!,#REF!))","v":{"$error":"#REF!"}},{"$f":"IF(V529>#REF!,\"\",#REF!)","v":{"$error":"#REF!"}},null,null,null,null,null,null,null,522]
[523,{"$f":"IF(A530>=#REF!,\"\",IF(A530<=#REF!,#REF!,#REF!))","v":{"$error":"#REF!"}},{"$f":"IF(A530>=#REF!,\"\",IF(A530<=#REF!,#REF!,#REF!))","v":{"$error":"#REF!"}},{"$f":"IF(A530>#REF!,\"\",#REF!)","v":{"$error":"#REF!"}},null,523,{"$f":"IF(F530>=#REF!,\"\",IF(F530<=#REF!,#REF!,#REF!))","v":{"$error":"#REF!"}},{"$f":"IF(F530>=#REF!,\"\",IF(F530<=#REF!,#REF!,#REF!))","v":{"$error":"#REF!"}},{"$f":"IF(F530>#REF!,\"\",PMT(#REF!/12,#REF!,-#REF!))","v":{"$error":"#REF!"}},null,null,null,null,523,{"$f":"IF(N530>#REF!,\"\",$L$7)","v":{"$error":"#REF!"}},{"$f":"IF(N530>=#REF!,\"\",IF(N530<=#REF!,#REF!,#REF!))","v":{"$error":"#REF!"}},{"$f":"IF(N530>#REF!,\"\",#REF!)","v":{"$error":"#REF!"}},null,null,null,null,523,{"$f":"IF(V530>#REF!,\"\",$T$7)","v":{"$error":"#REF!"}},{"$f":"IF(V530>=#REF!,\"\",IF(V530<=#REF!,#REF!,#REF!))","v":{"$error":"#REF!"}},{"$f":"IF(V530>#REF!,\"\",#REF!)","v":{"$error":"#REF!"}},null,null,null,null,null,null,null,523]
[524,{"$f":"IF(A531>=#REF!,\"\",IF(A531<=#REF!,#REF!,#REF!))","v":{"$error":"#REF!"}},{"$f":"IF(A531>=#REF!,\"\",IF(A531<=#REF!,#REF!,#REF!))","v":{"$error":"#REF!"}},{"$f":"IF(A531>#REF!,\"\",#REF!)","v":{"$error":"#REF!"}},null,524,{"$f":"IF(F531>=#REF!,\"\",IF(F531<=#REF!,#REF!,#REF!))","v":{"$error":"#REF!"}},{"$f":"IF(F531>=#REF!,\"\",IF(F531<=#REF!,#REF!,#REF!))","v":{"$error":"#REF!"}},{"$f":"IF(F531>#REF!,\"\",PMT(#REF!/12,#REF!,-#REF!))","v":{"$error":"#REF!"}},null,null,null,null,524,{"$f":"IF(N531>#REF!,\"\",$L$7)","v":{"$error":"#REF!"}},{"$f":"IF(N531>=#REF!,\"\",IF(N531<=#REF!,#REF!,#REF!))","v":{"$error":"#REF!"}},{"$f":"IF(N531>#REF!,\"\",#REF!)","v":{"$error":"#REF!"}},null,null,null,null,524,{"$f":"IF(V531>#REF!,\"\",$T$7)","v":{"$error":"#REF!"}},{"$f":"IF(V531>=#REF!,\"\",IF(V531<=#REF!,#REF!,#REF!))","v":{"$error":"#REF!"}},{"$f":"IF(V531>#REF!,\"\",#REF!)","v":{"$error":"#REF!"}},null,null,null,null,null,null,null,524]
[525,{"$f":"IF(A532>=#REF!,\"\",IF(A532<=#REF!,#REF!,#REF!))","v":{"$error":"#REF!"}},{"$f":"IF(A532>=#REF!,\"\",IF(A532<=#REF!,#REF!,#REF!))","v":{"$error":"#REF!"}},{"$f":"IF(A532>#REF!,\"\",#REF!)","v":{"$error":"#REF!"}},null,525,{"$f":"IF(F532>=#REF!,\"\",IF(F532<=#REF!,#REF!,#REF!))","v":{"$error":"#REF!"}},{"$f":"IF(F532>=#REF!,\"\",IF(F532<=#REF!,#REF!,#REF!))","v":{"$error":"#REF!"}},{"$f":"IF(F532>#REF!,\"\",PMT(#REF!/12,#REF!,-#REF!))","v":{"$error":"#REF!"}},null,null,null,null,525,{"$f":"IF(N532>#REF!,\"\",$L$7)","v":{"$error":"#REF!"}},{"$f":"IF(N532>=#REF!,\"\",IF(N532<=#REF!,#REF!,#REF!))","v":{"$error":"#REF!"}},{"$f":"IF(N532>#REF!,\"\",#REF!)","v":{"$error":"#REF!"}},null,null,null,null,525,{"$f":"IF(V532>#REF!,\"\",$T$7)","v":{"$error":"#REF!"}},{"$f":"IF(V532>=#REF!,\"\",IF(V532<=#REF!,#REF!,#REF!))","v":{"$error":"#REF!"}},{"$f":"IF(V532>#REF!,\"\",#REF!)","v":{"$error":"#REF!"}},null,null,null,null,null,null,null,525]
[526,{"$f":"IF(A533>=#REF!,\"\",IF(A533<=#REF!,#REF!,#REF!))","v":{"$error":"#REF!"}},{"$f":"IF(A533>=#REF!,\"\",IF(A533<=#REF!,#REF!,#REF!))","v":{"$error":"#REF!"}},{"$f":"IF(A533>#REF!,\"\",#REF!)","v":{"$error":"#REF!"}},null,526,{"$f":"IF(F533>=#REF!,\"\",IF(F533<=#REF!,#REF!,#REF!))","v":{"$error":"#REF!"}},{"$f":"IF(F533>=#REF!,\"\",IF(F533<=#REF!,#REF!,#REF!))","v":{"$error":"#REF!"}},{"$f":"IF(F533>#REF!,\"\",PMT(#REF!/12,#REF!,-#REF!))","v":{"$error":"#REF!"}},null,null,null,null,526,{"$f":"IF(N533>#REF!,\"\",$L$7)","v":{"$error":"#REF!"}},{"$f":"IF(N533>=#REF!,\"\",IF(N533<=#REF!,#REF!,#REF!))","v":{"$error":"#REF!"}},{"$f":"IF(N533>#REF!,\"\",#REF!)","v":{"$error":"#REF!"}},null,null,null,null,526,{"$f":"IF(V533>#REF!,\"\",$T$7)","v":{"$error":"#REF!"}},{"$f":"IF(V533>=#REF!,\"\",IF(V533<=#REF!,#REF!,#REF!))","v":{"$error":"#REF!"}},{"$f":"IF(V533>#REF!,\"\",#REF!)","v":{"$error":"#REF!"}},null,null,null,null,null,null,null,526]
[527,{"$f":"IF(A534>=#REF!,\"\",IF(A534<=#REF!,#REF!,#REF!))","v":{"$error":"#REF!"}},{"$f":"IF(A534>=#REF!,\"\",IF(A534<=#REF!,#REF!,#REF!))","v":{"$error":"#REF!"}},{"$f":"IF(A534>#REF!,\"\",#REF!)","v":{"$error":"#REF!"}},null,527,{"$f":"IF(F534>=#REF!,\"\",IF(F534<=#REF!,#REF!,#REF!))","v":{"$error":"#REF!"}},{"$f":"IF(F534>=#REF!,\"\",IF(F534<=#REF!,#REF!,#REF!))","v":{"$error":"#REF!"}},{"$f":"IF(F534>#REF!,\"\",PMT(#REF!/12,#REF!,-#REF!))","v":{"$error":"#REF!"}},null,null,null,null,527,{"$f":"IF(N534>#REF!,\"\",$L$7)","v":{"$error":"#REF!"}},{"$f":"IF(N534>=#REF!,\"\",IF(N534<=#REF!,#REF!,#REF!))","v":{"$error":"#REF!"}},{"$f":"IF(N534>#REF!,\"\",#REF!)","v":{"$error":"#REF!"}},null,null,null,null,527,{"$f":"IF(V534>#REF!,\"\",$T$7)","v":{"$error":"#REF!"}},{"$f":"IF(V534>=#REF!,\"\",IF(V534<=#REF!,#REF!,#REF!))","v":{"$error":"#REF!"}},{"$f":"IF(V534>#REF!,\"\",#REF!)","v":{"$error":"#REF!"}},null,null,null,null,null,null,null,527]
[528,{"$f":"IF(A535>=#REF!,\"\",IF(A535<=#REF!,#REF!,#REF!))","v":{"$error":"#REF!"}},{"$f":"IF(A535>=#REF!,\"\",IF(A535<=#REF!,#REF!,#REF!))","v":{"$error":"#REF!"}},{"$f":"IF(A535>#REF!,\"\",#REF!)","v":{"$error":"#REF!"}},null,528,{"$f":"IF(F535>=#REF!,\"\",IF(F535<=#REF!,#REF!,#REF!))","v":{"$error":"#REF!"}},{"$f":"IF(F535>=#REF!,\"\",IF(F535<=#REF!,#REF!,#REF!))","v":{"$error":"#REF!"}},{"$f":"IF(F535>#REF!,\"\",PMT(#REF!/12,#REF!,-#REF!))","v":{"$error":"#REF!"}},null,null,null,null,528,{"$f":"IF(N535>#REF!,\"\",$L$7)","v":{"$error":"#REF!"}},{"$f":"IF(N535>=#REF!,\"\",IF(N535<=#REF!,#REF!,#REF!))","v":{"$error":"#REF!"}},{"$f":"IF(N535>#REF!,\"\",#REF!)","v":{"$error":"#REF!"}},null,null,null,null,528,{"$f":"IF(V535>#REF!,\"\",$T$7)","v":{"$error":"#REF!"}},{"$f":"IF(V535>=#REF!,\"\",IF(V535<=#REF!,#REF!,#REF!))","v":{"$error":"#REF!"}},{"$f":"IF(V535>#REF!,\"\",#REF!)","v":{"$error":"#REF!"}},null,null,null,null,null,null,null,528]
[529,{"$f":"IF(A536>=#REF!,\"\",IF(A536<=#REF!,#REF!,#REF!))","v":{"$error":"#REF!"}},{"$f":"IF(A536>=#REF!,\"\",IF(A536<=#REF!,#REF!,#REF!))","v":{"$error":"#REF!"}},{"$f":"IF(A536>#REF!,\"\",#REF!)","v":{"$error":"#REF!"}},null,529,{"$f":"IF(F536>=#REF!,\"\",IF(F536<=#REF!,#REF!,#REF!))","v":{"$error":"#REF!"}},{"$f":"IF(F536>=#REF!,\"\",IF(F536<=#REF!,#REF!,#REF!))","v":{"$error":"#REF!"}},{"$f":"IF(F536>#REF!,\"\",PMT(#REF!/12,#REF!,-#REF!))","v":{"$error":"#REF!"}},null,null,null,null,529,{"$f":"IF(N536>#REF!,\"\",$L$7)","v":{"$error":"#REF!"}},{"$f":"IF(N536>=#REF!,\"\",IF(N536<=#REF!,#REF!,#REF!))","v":{"$error":"#REF!"}},{"$f":"IF(N536>#REF!,\"\",#REF!)","v":{"$error":"#REF!"}},null,null,null,null,529,{"$f":"IF(V536>#REF!,\"\",$T$7)","v":{"$error":"#REF!"}},{"$f":"IF(V536>=#REF!,\"\",IF(V536<=#REF!,#REF!,#REF!))","v":{"$error":"#REF!"}},{"$f":"IF(V536>#REF!,\"\",#REF!)","v":{"$error":"#REF!"}},null,null,null,null,null,null,null,529]
[530,{"$f":"IF(A537>=#REF!,\"\",IF(A537<=#REF!,#REF!,#REF!))","v":{"$error":"#REF!"}},{"$f":"IF(A537>=#REF!,\"\",IF(A537<=#REF!,#REF!,#REF!))","v":{"$error":"#REF!"}},{"$f":"IF(A537>#REF!,\"\",#REF!)","v":{"$error":"#REF!"}},null,530,{"$f":"IF(F537>=#REF!,\"\",IF(F537<=#REF!,#REF!,#REF!))","v":{"$error":"#REF!"}},{"$f":"IF(F537>=#REF!,\"\",IF(F537<=#REF!,#REF!,#REF!))","v":{"$error":"#REF!"}},{"$f":"IF(F537>#REF!,\"\",PMT(#REF!/12,#REF!,-#REF!))","v":{"$error":"#REF!"}},null,null,null,null,530,{"$f":"IF(N537>#REF!,\"\",$L$7)","v":{"$error":"#REF!"}},{"$f":"IF(N537>=#REF!,\"\",IF(N537<=#REF!,#REF!,#REF!))","v":{"$error":"#REF!"}},{"$f":"IF(N537>#REF!,\"\",#REF!)","v":{"$error":"#REF!"}},null,null,null,null,530,{"$f":"IF(V537>#REF!,\"\",$T$7)","v":{"$error":"#REF!"}},{"$f":"IF(V537>=#REF!,\"\",IF(V537<=#REF!,#REF!,#REF!))","v":{"$error":"#REF!"}},{"$f":"IF(V537>#REF!,\"\",#REF!)","v":{"$error":"#REF!"}},null,null,null,null,null,null,null,530]
[531,{"$f":"IF(A538>=#REF!,\"\",IF(A538<=#REF!,#REF!,#REF!))","v":{"$error":"#REF!"}},{"$f":"IF(A538>=#REF!,\"\",IF(A538<=#REF!,#REF!,#REF!))","v":{"$error":"#REF!"}},{"$f":"IF(A538>#REF!,\"\",#REF!)","v":{"$error":"#REF!"}},null,531,{"$f":"IF(F538>=#REF!,\"\",IF(F538<=#REF!,#REF!,#REF!))","v":{"$error":"#REF!"}},{"$f":"IF(F538>=#REF!,\"\",IF(F538<=#REF!,#REF!,#REF!))","v":{"$error":"#REF!"}},{"$f":"IF(F538>#REF!,\"\",PMT(#REF!/12,#REF!,-#REF!))","v":{"$error":"#REF!"}},null,null,null,null,531,{"$f":"IF(N538>#REF!,\"\",$L$7)","v":{"$error":"#REF!"}},{"$f":"IF(N538>=#REF!,\"\",IF(N538<=#REF!,#REF!,#REF!))","v":{"$error":"#REF!"}},{"$f":"IF(N538>#REF!,\"\",#REF!)","v":{"$error":"#REF!"}},null,null,null,null,531,{"$f":"IF(V538>#REF!,\"\",$T$7)","v":{"$error":"#REF!"}},{"$f":"IF(V538>=#REF!,\"\",IF(V538<=#REF!,#REF!,#REF!))","v":{"$error":"#REF!"}},{"$f":"IF(V538>#REF!,\"\",#REF!)","v":{"$error":"#REF!"}},null,null,null,null,null,null,null,531]
[532,{"$f":"IF(A539>=#REF!,\"\",IF(A539<=#REF!,#REF!,#REF!))","v":{"$error":"#REF!"}},{"$f":"IF(A539>=#REF!,\"\",IF(A539<=#REF!,#REF!,#REF!))","v":{"$error":"#REF!"}},{"$f":"IF(A539>#REF!,\"\",#REF!)","v":{"$error":"#REF!"}},null,532,{"$f":"IF(F539>=#REF!,\"\",IF(F539<=#REF!,#REF!,#REF!))","v":{"$error":"#REF!"}},{"$f":"IF(F539>=#REF!,\"\",IF(F539<=#REF!,#REF!,#REF!))","v":{"$error":"#REF!"}},{"$f":"IF(F539>#REF!,\"\",PMT(#REF!/12,#REF!,-#REF!))","v":{"$error":"#REF!"}},null,null,null,null,532,{"$f":"IF(N539>#REF!,\"\",$L$7)","v":{"$error":"#REF!"}},{"$f":"IF(N539>=#REF!,\"\",IF(N539<=#REF!,#REF!,#REF!))","v":{"$error":"#REF!"}},{"$f":"IF(N539>#REF!,\"\",#REF!)","v":{"$error":"#REF!"}},null,null,null,null,532,{"$f":"IF(V539>#REF!,\"\",$T$7)","v":{"$error":"#REF!"}},{"$f":"IF(V539>=#REF!,\"\",IF(V539<=#REF!,#REF!,#REF!))","v":{"$error":"#REF!"}},{"$f":"IF(V539>#REF!,\"\",#REF!)","v":{"$error":"#REF!"}},null,null,null,null,null,null,null,532]
[533,{"$f":"IF(A540>=#REF!,\"\",IF(A540<=#REF!,#REF!,#REF!))","v":{"$error":"#REF!"}},{"$f":"IF(A540>=#REF!,\"\",IF(A540<=#REF!,#REF!,#REF!))","v":{"$error":"#REF!"}},{"$f":"IF(A540>#REF!,\"\",#REF!)","v":{"$error":"#REF!"}},null,533,{"$f":"IF(F540>=#REF!,\"\",IF(F540<=#REF!,#REF!,#REF!))","v":{"$error":"#REF!"}},{"$f":"IF(F540>=#REF!,\"\",IF(F540<=#REF!,#REF!,#REF!))","v":{"$error":"#REF!"}},{"$f":"IF(F540>#REF!,\"\",PMT(#REF!/12,#REF!,-#REF!))","v":{"$error":"#REF!"}},null,null,null,null,533,{"$f":"IF(N540>#REF!,\"\",$L$7)","v":{"$error":"#REF!"}},{"$f":"IF(N540>=#REF!,\"\",IF(N540<=#REF!,#REF!,#REF!))","v":{"$error":"#REF!"}},{"$f":"IF(N540>#REF!,\"\",#REF!)","v":{"$error":"#REF!"}},null,null,null,null,533,{"$f":"IF(V540>#REF!,\"\",$T$7)","v":{"$error":"#REF!"}},{"$f":"IF(V540>=#REF!,\"\",IF(V540<=#REF!,#REF!,#REF!))","v":{"$error":"#REF!"}},{"$f":"IF(V540>#REF!,\"\",#REF!)","v":{"$error":"#REF!"}},null,null,null,null,null,null,null,533]
[534,{"$f":"IF(A541>=#REF!,\"\",IF(A541<=#REF!,#REF!,#REF!))","v":{"$error":"#REF!"}},{"$f":"IF(A541>=#REF!,\"\",IF(A541<=#REF!,#REF!,#REF!))","v":{"$error":"#REF!"}},{"$f":"IF(A541>#REF!,\"\",#REF!)","v":{"$error":"#REF!"}},null,534,{"$f":"IF(F541>=#REF!,\"\",IF(F541<=#REF!,#REF!,#REF!))","v":{"$error":"#REF!"}},{"$f":"IF(F541>=#REF!,\"\",IF(F541<=#REF!,#REF!,#REF!))","v":{"$error":"#REF!"}},{"$f":"IF(F541>#REF!,\"\",PMT(#REF!/12,#REF!,-#REF!))","v":{"$error":"#REF!"}},null,null,null,null,534,{"$f":"IF(N541>#REF!,\"\",$L$7)","v":{"$error":"#REF!"}},{"$f":"IF(N541>=#REF!,\"\",IF(N541<=#REF!,#REF!,#REF!))","v":{"$error":"#REF!"}},{"$f":"IF(N541>#REF!,\"\",#REF!)","v":{"$error":"#REF!"}},null,null,null,null,534,{"$f":"IF(V541>#REF!,\"\",$T$7)","v":{"$error":"#REF!"}},{"$f":"IF(V541>=#REF!,\"\",IF(V541<=#REF!,#REF!,#REF!))","v":{"$error":"#REF!"}},{"$f":"IF(V541>#REF!,\"\",#REF!)","v":{"$error":"#REF!"}},null,null,null,null,null,null,null,534]
[535,{"$f":"IF(A542>=#REF!,\"\",IF(A542<=#REF!,#REF!,#REF!))","v":{"$error":"#REF!"}},{"$f":"IF(A542>=#REF!,\"\",IF(A542<=#REF!,#REF!,#REF!))","v":{"$error":"#REF!"}},{"$f":"IF(A542>#REF!,\"\",#REF!)","v":{"$error":"#REF!"}},null,535,{"$f":"IF(F542>=#REF!,\"\",IF(F542<=#REF!,#REF!,#REF!))","v":{"$error":"#REF!"}},{"$f":"IF(F542>=#REF!,\"\",IF(F542<=#REF!,#REF!,#REF!))","v":{"$error":"#REF!"}},{"$f":"IF(F542>#REF!,\"\",PMT(#REF!/12,#REF!,-#REF!))","v":{"$error":"#REF!"}},null,null,null,null,535,{"$f":"IF(N542>#REF!,\"\",$L$7)","v":{"$error":"#REF!"}},{"$f":"IF(N542>=#REF!,\"\",IF(N542<=#REF!,#REF!,#REF!))","v":{"$error":"#REF!"}},{"$f":"IF(N542>#REF!,\"\",#REF!)","v":{"$error":"#REF!"}},null,null,null,null,535,{"$f":"IF(V542>#REF!,\"\",$T$7)","v":{"$error":"#REF!"}},{"$f":"IF(V542>=#REF!,\"\",IF(V542<=#REF!,#REF!,#REF!))","v":{"$error":"#REF!"}},{"$f":"IF(V542>#REF!,\"\",#REF!)","v":{"$error":"#REF!"}},null,null,null,null,null,null,null,535]
[536,{"$f":"IF(A543>=#REF!,\"\",IF(A543<=#REF!,#REF!,#REF!))","v":{"$error":"#REF!"}},{"$f":"IF(A543>=#REF!,\"\",IF(A543<=#REF!,#REF!,#REF!))","v":{"$error":"#REF!"}},{"$f":"IF(A543>#REF!,\"\",#REF!)","v":{"$error":"#REF!"}},null,536,{"$f":"IF(F543>=#REF!,\"\",IF(F543<=#REF!,#REF!,#REF!))","v":{"$error":"#REF!"}},{"$f":"IF(F543>=#REF!,\"\",IF(F543<=#REF!,#REF!,#REF!))","v":{"$error":"#REF!"}},{"$f":"IF(F543>#REF!,\"\",PMT(#REF!/12,#REF!,-#REF!))","v":{"$error":"#REF!"}},null,null,null,null,536,{"$f":"IF(N543>#REF!,\"\",$L$7)","v":{"$error":"#REF!"}},{"$f":"IF(N543>=#REF!,\"\",IF(N543<=#REF!,#REF!,#REF!))","v":{"$error":"#REF!"}},{"$f":"IF(N543>#REF!,\"\",#REF!)","v":{"$error":"#REF!"}},null,null,null,null,536,{"$f":"IF(V543>#REF!,\"\",$T$7)","v":{"$error":"#REF!"}},{"$f":"IF(V543>=#REF!,\"\",IF(V543<=#REF!,#REF!,#REF!))","v":{"$error":"#REF!"}},{"$f":"IF(V543>#REF!,\"\",#REF!)","v":{"$error":"#REF!"}},null,null,null,null,null,null,null,536]
[537,{"$f":"IF(A544>=#REF!,\"\",IF(A544<=#REF!,#REF!,#REF!))","v":{"$error":"#REF!"}},{"$f":"IF(A544>=#REF!,\"\",IF(A544<=#REF!,#REF!,#REF!))","v":{"$error":"#REF!"}},{"$f":"IF(A544>#REF!,\"\",#REF!)","v":{"$error":"#REF!"}},null,537,{"$f":"IF(F544>=#REF!,\"\",IF(F544<=#REF!,#REF!,#REF!))","v":{"$error":"#REF!"}},{"$f":"IF(F544>=#REF!,\"\",IF(F544<=#REF!,#REF!,#REF!))","v":{"$error":"#REF!"}},{"$f":"IF(F544>#REF!,\"\",PMT(#REF!/12,#REF!,-#REF!))","v":{"$error":"#REF!"}},null,null,null,null,537,{"$f":"IF(N544>#REF!,\"\",$L$7)","v":{"$error":"#REF!"}},{"$f":"IF(N544>=#REF!,\"\",IF(N544<=#REF!,#REF!,#REF!))","v":{"$error":"#REF!"}},{"$f":"IF(N544>#REF!,\"\",#REF!)","v":{"$error":"#REF!"}},null,null,null,null,537,{"$f":"IF(V544>#REF!,\"\",$T$7)","v":{"$error":"#REF!"}},{"$f":"IF(V544>=#REF!,\"\",IF(V544<=#REF!,#REF!,#REF!))","v":{"$error":"#REF!"}},{"$f":"IF(V544>#REF!,\"\",#REF!)","v":{"$error":"#REF!"}},null,null,null,null,null,null,null,537]
[538,{"$f":"IF(A545>=#REF!,\"\",IF(A545<=#REF!,#REF!,#REF!))","v":{"$error":"#REF!"}},{"$f":"IF(A545>=#REF!,\"\",IF(A545<=#REF!,#REF!,#REF!))","v":{"$error":"#REF!"}},{"$f":"IF(A545>#REF!,\"\",#REF!)","v":{"$error":"#REF!"}},null,538,{"$f":"IF(F545>=#REF!,\"\",IF(F545<=#REF!,#REF!,#REF!))","v":{"$error":"#REF!"}},{"$f":"IF(F545>=#REF!,\"\",IF(F545<=#REF!,#REF!,#REF!))","v":{"$error":"#REF!"}},{"$f":"IF(F545>#REF!,\"\",PMT(#REF!/12,#REF!,-#REF!))","v":{"$error":"#REF!"}},null,null,null,null,538,{"$f":"IF(N545>#REF!,\"\",$L$7)","v":{"$error":"#REF!"}},{"$f":"IF(N545>=#REF!,\"\",IF(N545<=#REF!,#REF!,#REF!))","v":{"$error":"#REF!"}},{"$f":"IF(N545>#REF!,\"\",#REF!)","v":{"$error":"#REF!"}},null,null,null,null,538,{"$f":"IF(V545>#REF!,\"\",$T$7)","v":{"$error":"#REF!"}},{"$f":"IF(V545>=#REF!,\"\",IF(V545<=#REF!,#REF!,#REF!))","v":{"$error":"#REF!"}},{"$f":"IF(V545>#REF!,\"\",#REF!)","v":{"$error":"#REF!"}},null,null,null,null,null,null,null,538]
[539,{"$f":"IF(A546>=#REF!,\"\",IF(A546<=#REF!,#REF!,#REF!))","v":{"$error":"#REF!"}},{"$f":"IF(A546>=#REF!,\"\",IF(A546<=#REF!,#REF!,#REF!))","v":{"$error":"#REF!"}},{"$f":"IF(A546>#REF!,\"\",#REF!)","v":{"$error":"#REF!"}},null,539,{"$f":"IF(F546>=#REF!,\"\",IF(F546<=#REF!,#REF!,#REF!))","v":{"$error":"#REF!"}},{"$f":"IF(F546>=#REF!,\"\",IF(F546<=#REF!,#REF!,#REF!))","v":{"$error":"#REF!"}},{"$f":"IF(F546>#REF!,\"\",PMT(#REF!/12,#REF!,-#REF!))","v":{"$error":"#REF!"}},null,null,null,null,539,{"$f":"IF(N546>#REF!,\"\",$L$7)","v":{"$error":"#REF!"}},{"$f":"IF(N546>=#REF!,\"\",IF(N546<=#REF!,#REF!,#REF!))","v":{"$error":"#REF!"}},{"$f":"IF(N546>#REF!,\"\",#REF!)","v":{"$error":"#REF!"}},null,null,null,null,539,{"$f":"IF(V546>#REF!,\"\",$T$7)","v":{"$error":"#REF!"}},{"$f":"IF(V546>=#REF!,\"\",IF(V546<=#REF!,#REF!,#REF!))","v":{"$error":"#REF!"}},{"$f":"IF(V546>#REF!,\"\",#REF!)","v":{"$error":"#REF!"}},null,null,null,null,null,null,null,539]
[540,{"$f":"IF(A547>=#REF!,\"\",IF(A547<=#REF!,#REF!,#REF!))","v":{"$error":"#REF!"}},{"$f":"IF(A547>=#REF!,\"\",IF(A547<=#REF!,#REF!,#REF!))","v":{"$error":"#REF!"}},{"$f":"IF(A547>#REF!,\"\",#REF!)","v":{"$error":"#REF!"}},null,540,{"$f":"IF(F547>=#REF!,\"\",IF(F547<=#REF!,#REF!,#REF!))","v":{"$error":"#REF!"}},{"$f":"IF(F547>=#REF!,\"\",IF(F547<=#REF!,#REF!,#REF!))","v":{"$error":"#REF!"}},{"$f":"IF(F547>#REF!,\"\",PMT(#REF!/12,#REF!,-#REF!))","v":{"$error":"#REF!"}},null,null,null,null,540,{"$f":"IF(N547>#REF!,\"\",$L$7)","v":{"$error":"#REF!"}},{"$f":"IF(N547>=#REF!,\"\",IF(N547<=#REF!,#REF!,#REF!))","v":{"$error":"#REF!"}},{"$f":"IF(N547>#REF!,\"\",#REF!)","v":{"$error":"#REF!"}},null,null,null,null,540,{"$f":"IF(V547>#REF!,\"\",$T$7)","v":{"$error":"#REF!"}},{"$f":"IF(V547>=#REF!,\"\",IF(V547<=#REF!,#REF!,#REF!))","v":{"$error":"#REF!"}},{"$f":"IF(V547>#REF!,\"\",#REF!)","v":{"$error":"#REF!"}},null,null,null,null,null,null,null,540]
[541,{"$f":"IF(A548>=#REF!,\"\",IF(A548<=#REF!,#REF!,#REF!))","v":{"$error":"#REF!"}},{"$f":"IF(A548>=#REF!,\"\",IF(A548<=#REF!,#REF!,#REF!))","v":{"$error":"#REF!"}},{"$f":"IF(A548>#REF!,\"\",#REF!)","v":{"$error":"#REF!"}},null,541,{"$f":"IF(F548>=#REF!,\"\",IF(F548<=#REF!,#REF!,#REF!))","v":{"$error":"#REF!"}},{"$f":"IF(F548>=#REF!,\"\",IF(F548<=#REF!,#REF!,#REF!))","v":{"$error":"#REF!"}},{"$f":"IF(F548>#REF!,\"\",PMT(#REF!/12,#REF!,-#REF!))","v":{"$error":"#REF!"}},null,null,null,null,541,{"$f":"IF(N548>#REF!,\"\",$L$7)","v":{"$error":"#REF!"}},{"$f":"IF(N548>=#REF!,\"\",IF(N548<=#REF!,#REF!,#REF!))","v":{"$error":"#REF!"}},{"$f":"IF(N548>#REF!,\"\",#REF!)","v":{"$error":"#REF!"}},null,null,null,null,541,{"$f":"IF(V548>#REF!,\"\",$T$7)","v":{"$error":"#REF!"}},{"$f":"IF(V548>=#REF!,\"\",IF(V548<=#REF!,#REF!,#REF!))","v":{"$error":"#REF!"}},{"$f":"IF(V548>#REF!,\"\",#REF!)","v":{"$error":"#REF!"}},null,null,null,null,null,null,null,541]
[542,{"$f":"IF(A549>=#REF!,\"\",IF(A549<=#REF!,#REF!,#REF!))","v":{"$error":"#REF!"}},{"$f":"IF(A549>=#REF!,\"\",IF(A549<=#REF!,#REF!,#REF!))","v":{"$error":"#REF!"}},{"$f":"IF(A549>#REF!,\"\",#REF!)","v":{"$error":"#REF!"}},null,542,{"$f":"IF(F549>=#REF!,\"\",IF(F549<=#REF!,#REF!,#REF!))","v":{"$error":"#REF!"}},{"$f":"IF(F549>=#REF!,\"\",IF(F549<=#REF!,#REF!,#REF!))","v":{"$error":"#REF!"}},{"$f":"IF(F549>#REF!,\"\",PMT(#REF!/12,#REF!,-#REF!))","v":{"$error":"#REF!"}},null,null,null,null,542,{"$f":"IF(N549>#REF!,\"\",$L$7)","v":{"$error":"#REF!"}},{"$f":"IF(N549>=#REF!,\"\",IF(N549<=#REF!,#REF!,#REF!))","v":{"$error":"#REF!"}},{"$f":"IF(N549>#REF!,\"\",#REF!)","v":{"$error":"#REF!"}},null,null,null,null,542,{"$f":"IF(V549>#REF!,\"\",$T$7)","v":{"$error":"#REF!"}},{"$f":"IF(V549>=#REF!,\"\",IF(V549<=#REF!,#REF!,#REF!))","v":{"$error":"#REF!"}},{"$f":"IF(V549>#REF!,\"\",#REF!)","v":{"$error":"#REF!"}},null,null,null,null,null,null,null,542]
[543,{"$f":"IF(A550>=#REF!,\"\",IF(A550<=#REF!,#REF!,#REF!))","v":{"$error":"#REF!"}},{"$f":"IF(A550>=#REF!,\"\",IF(A550<=#REF!,#REF!,#REF!))","v":{"$error":"#REF!"}},{"$f":"IF(A550>#REF!,\"\",#REF!)","v":{"$error":"#REF!"}},null,543,{"$f":"IF(F550>=#REF!,\"\",IF(F550<=#REF!,#REF!,#REF!))","v":{"$error":"#REF!"}},{"$f":"IF(F550>=#REF!,\"\",IF(F550<=#REF!,#REF!,#REF!))","v":{"$error":"#REF!"}},{"$f":"IF(F550>#REF!,\"\",PMT(#REF!/12,#REF!,-#REF!))","v":{"$error":"#REF!"}},null,null,null,null,543,{"$f":"IF(N550>#REF!,\"\",$L$7)","v":{"$error":"#REF!"}},{"$f":"IF(N550>=#REF!,\"\",IF(N550<=#REF!,#REF!,#REF!))","v":{"$error":"#REF!"}},{"$f":"IF(N550>#REF!,\"\",#REF!)","v":{"$error":"#REF!"}},null,null,null,null,543,{"$f":"IF(V550>#REF!,\"\",$T$7)","v":{"$error":"#REF!"}},{"$f":"IF(V550>=#REF!,\"\",IF(V550<=#REF!,#REF!,#REF!))","v":{"$error":"#REF!"}},{"$f":"IF(V550>#REF!,\"\",#REF!)","v":{"$error":"#REF!"}},null,null,null,null,null,null,null,543]
[544,{"$f":"IF(A551>=#REF!,\"\",IF(A551<=#REF!,#REF!,#REF!))","v":{"$error":"#REF!"}},{"$f":"IF(A551>=#REF!,\"\",IF(A551<=#REF!,#REF!,#REF!))","v":{"$error":"#REF!"}},{"$f":"IF(A551>#REF!,\"\",#REF!)","v":{"$error":"#REF!"}},null,544,{"$f":"IF(F551>=#REF!,\"\",IF(F551<=#REF!,#REF!,#REF!))","v":{"$error":"#REF!"}},{"$f":"IF(F551>=#REF!,\"\",IF(F551<=#REF!,#REF!,#REF!))","v":{"$error":"#REF!"}},{"$f":"IF(F551>#REF!,\"\",PMT(#REF!/12,#REF!,-#REF!))","v":{"$error":"#REF!"}},null,null,null,null,544,{"$f":"IF(N551>#REF!,\"\",$L$7)","v":{"$error":"#REF!"}},{"$f":"IF(N551>=#REF!,\"\",IF(N551<=#REF!,#REF!,#REF!))","v":{"$error":"#REF!"}},{"$f":"IF(N551>#REF!,\"\",#REF!)","v":{"$error":"#REF!"}},null,null,null,null,544,{"$f":"IF(V551>#REF!,\"\",$T$7)","v":{"$error":"#REF!"}},{"$f":"IF(V551>=#REF!,\"\",IF(V551<=#REF!,#REF!,#REF!))","v":{"$error":"#REF!"}},{"$f":"IF(V551>#REF!,\"\",#REF!)","v":{"$error":"#REF!"}},null,null,null,null,null,null,null,544]
[545,{"$f":"IF(A552>=#REF!,\"\",IF(A552<=#REF!,#REF!,#REF!))","v":{"$error":"#REF!"}},{"$f":"IF(A552>=#REF!,\"\",IF(A552<=#REF!,#REF!,#REF!))","v":{"$error":"#REF!"}},{"$f":"IF(A552>#REF!,\"\",#REF!)","v":{"$error":"#REF!"}},null,545,{"$f":"IF(F552>=#REF!,\"\",IF(F552<=#REF!,#REF!,#REF!))","v":{"$error":"#REF!"}},{"$f":"IF(F552>=#REF!,\"\",IF(F552<=#REF!,#REF!,#REF!))","v":{"$error":"#REF!"}},{"$f":"IF(F552>#REF!,\"\",PMT(#REF!/12,#REF!,-#REF!))","v":{"$error":"#REF!"}},null,null,null,null,545,{"$f":"IF(N552>#REF!,\"\",$L$7)","v":{"$error":"#REF!"}},{"$f":"IF(N552>=#REF!,\"\",IF(N552<=#REF!,#REF!,#REF!))","v":{"$error":"#REF!"}},{"$f":"IF(N552>#REF!,\"\",#REF!)","v":{"$error":"#REF!"}},null,null,null,null,545,{"$f":"IF(V552>#REF!,\"\",$T$7)","v":{"$error":"#REF!"}},{"$f":"IF(V552>=#REF!,\"\",IF(V552<=#REF!,#REF!,#REF!))","v":{"$error":"#REF!"}},{"$f":"IF(V552>#REF!,\"\",#REF!)","v":{"$error":"#REF!"}},null,null,null,null,null,null,null,545]
[546,{"$f":"IF(A553>=#REF!,\"\",IF(A553<=#REF!,#REF!,#REF!))","v":{"$error":"#REF!"}},{"$f":"IF(A553>=#REF!,\"\",IF(A553<=#REF!,#REF!,#REF!))","v":{"$error":"#REF!"}},{"$f":"IF(A553>#REF!,\"\",#REF!)","v":{"$error":"#REF!"}},null,546,{"$f":"IF(F553>=#REF!,\"\",IF(F553<=#REF!,#REF!,#REF!))","v":{"$error":"#REF!"}},{"$f":"IF(F553>=#REF!,\"\",IF(F553<=#REF!,#REF!,#REF!))","v":{"$error":"#REF!"}},{"$f":"IF(F553>#REF!,\"\",PMT(#REF!/12,#REF!,-#REF!))","v":{"$error":"#REF!"}},null,null,null,null,546,{"$f":"IF(N553>#REF!,\"\",$L$7)","v":{"$error":"#REF!"}},{"$f":"IF(N553>=#REF!,\"\",IF(N553<=#REF!,#REF!,#REF!))","v":{"$error":"#REF!"}},{"$f":"IF(N553>#REF!,\"\",#REF!)","v":{"$error":"#REF!"}},null,null,null,null,546,{"$f":"IF(V553>#REF!,\"\",$T$7)","v":{"$error":"#REF!"}},{"$f":"IF(V553>=#REF!,\"\",IF(V553<=#REF!,#REF!,#REF!))","v":{"$error":"#REF!"}},{"$f":"IF(V553>#REF!,\"\",#REF!)","v":{"$error":"#REF!"}},null,null,null,null,null,null,null,546]
[547,{"$f":"IF(A554>=#REF!,\"\",IF(A554<=#REF!,#REF!,#REF!))","v":{"$error":"#REF!"}},{"$f":"IF(A554>=#REF!,\"\",IF(A554<=#REF!,#REF!,#REF!))","v":{"$error":"#REF!"}},{"$f":"IF(A554>#REF!,\"\",#REF!)","v":{"$error":"#REF!"}},null,547,{"$f":"IF(F554>=#REF!,\"\",IF(F554<=#REF!,#REF!,#REF!))","v":{"$error":"#REF!"}},{"$f":"IF(F554>=#REF!,\"\",IF(F554<=#REF!,#REF!,#REF!))","v":{"$error":"#REF!"}},{"$f":"IF(F554>#REF!,\"\",PMT(#REF!/12,#REF!,-#REF!))","v":{"$error":"#REF!"}},null,null,null,null,547,{"$f":"IF(N554>#REF!,\"\",$L$7)","v":{"$error":"#REF!"}},{"$f":"IF(N554>=#REF!,\"\",IF(N554<=#REF!,#REF!,#REF!))","v":{"$error":"#REF!"}},{"$f":"IF(N554>#REF!,\"\",#REF!)","v":{"$error":"#REF!"}},null,null,null,null,547,{"$f":"IF(V554>#REF!,\"\",$T$7)","v":{"$error":"#REF!"}},{"$f":"IF(V554>=#REF!,\"\",IF(V554<=#REF!,#REF!,#REF!))","v":{"$error":"#REF!"}},{"$f":"IF(V554>#REF!,\"\",#REF!)","v":{"$error":"#REF!"}},null,null,null,null,null,null,null,547]
[548,{"$f":"IF(A555>=#REF!,\"\",IF(A555<=#REF!,#REF!,#REF!))","v":{"$error":"#REF!"}},{"$f":"IF(A555>=#REF!,\"\",IF(A555<=#REF!,#REF!,#REF!))","v":{"$error":"#REF!"}},{"$f":"IF(A555>#REF!,\"\",#REF!)","v":{"$error":"#REF!"}},null,548,{"$f":"IF(F555>=#REF!,\"\",IF(F555<=#REF!,#REF!,#REF!))","v":{"$error":"#REF!"}},{"$f":"IF(F555>=#REF!,\"\",IF(F555<=#REF!,#REF!,#REF!))","v":{"$error":"#REF!"}},{"$f":"IF(F555>#REF!,\"\",PMT(#REF!/12,#REF!,-#REF!))","v":{"$error":"#REF!"}},null,null,null,null,548,{"$f":"IF(N555>#REF!,\"\",$L$7)","v":{"$error":"#REF!"}},{"$f":"IF(N555>=#REF!,\"\",IF(N555<=#REF!,#REF!,#REF!))","v":{"$error":"#REF!"}},{"$f":"IF(N555>#REF!,\"\",#REF!)","v":{"$error":"#REF!"}},null,null,null,null,548,{"$f":"IF(V555>#REF!,\"\",$T$7)","v":{"$error":"#REF!"}},{"$f":"IF(V555>=#REF!,\"\",IF(V555<=#REF!,#REF!,#REF!))","v":{"$error":"#REF!"}},{"$f":"IF(V555>#REF!,\"\",#REF!)","v":{"$error":"#REF!"}},null,null,null,null,null,null,null,548]
[549,{"$f":"IF(A556>=#REF!,\"\",IF(A556<=#REF!,#REF!,#REF!))","v":{"$error":"#REF!"}},{"$f":"IF(A556>=#REF!,\"\",IF(A556<=#REF!,#REF!,#REF!))","v":{"$error":"#REF!"}},{"$f":"IF(A556>#REF!,\"\",#REF!)","v":{"$error":"#REF!"}},null,549,{"$f":"IF(F556>=#REF!,\"\",IF(F556<=#REF!,#REF!,#REF!))","v":{"$error":"#REF!"}},{"$f":"IF(F556>=#REF!,\"\",IF(F556<=#REF!,#REF!,#REF!))","v":{"$error":"#REF!"}},{"$f":"IF(F556>#REF!,\"\",PMT(#REF!/12,#REF!,-#REF!))","v":{"$error":"#REF!"}},null,null,null,null,549,{"$f":"IF(N556>#REF!,\"\",$L$7)","v":{"$error":"#REF!"}},{"$f":"IF(N556>=#REF!,\"\",IF(N556<=#REF!,#REF!,#REF!))","v":{"$error":"#REF!"}},{"$f":"IF(N556>#REF!,\"\",#REF!)","v":{"$error":"#REF!"}},null,null,null,null,549,{"$f":"IF(V556>#REF!,\"\",$T$7)","v":{"$error":"#REF!"}},{"$f":"IF(V556>=#REF!,\"\",IF(V556<=#REF!,#REF!,#REF!))","v":{"$error":"#REF!"}},{"$f":"IF(V556>#REF!,\"\",#REF!)","v":{"$error":"#REF!"}},null,null,null,null,null,null,null,549]
[550,{"$f":"IF(A557>=#REF!,\"\",IF(A557<=#REF!,#REF!,#REF!))","v":{"$error":"#REF!"}},{"$f":"IF(A557>=#REF!,\"\",IF(A557<=#REF!,#REF!,#REF!))","v":{"$error":"#REF!"}},{"$f":"IF(A557>#REF!,\"\",#REF!)","v":{"$error":"#REF!"}},null,550,{"$f":"IF(F557>=#REF!,\"\",IF(F557<=#REF!,#REF!,#REF!))","v":{"$error":"#REF!"}},{"$f":"IF(F557>=#REF!,\"\",IF(F557<=#REF!,#REF!,#REF!))","v":{"$error":"#REF!"}},{"$f":"IF(F557>#REF!,\"\",PMT(#REF!/12,#REF!,-#REF!))","v":{"$error":"#REF!"}},null,null,null,null,550,{"$f":"IF(N557>#REF!,\"\",$L$7)","v":{"$error":"#REF!"}},{"$f":"IF(N557>=#REF!,\"\",IF(N557<=#REF!,#REF!,#REF!))","v":{"$error":"#REF!"}},{"$f":"IF(N557>#REF!,\"\",#REF!)","v":{"$error":"#REF!"}},null,null,null,null,550,{"$f":"IF(V557>#REF!,\"\",$T$7)","v":{"$error":"#REF!"}},{"$f":"IF(V557>=#REF!,\"\",IF(V557<=#REF!,#REF!,#REF!))","v":{"$error":"#REF!"}},{"$f":"IF(V557>#REF!,\"\",#REF!)","v":{"$error":"#REF!"}},null,null,null,null,null,null,null,550]
[551,{"$f":"IF(A558>=#REF!,\"\",IF(A558<=#REF!,#REF!,#REF!))","v":{"$error":"#REF!"}},{"$f":"IF(A558>=#REF!,\"\",IF(A558<=#REF!,#REF!,#REF!))","v":{"$error":"#REF!"}},{"$f":"IF(A558>#REF!,\"\",#REF!)","v":{"$error":"#REF!"}},null,551,{"$f":"IF(F558>=#REF!,\"\",IF(F558<=#REF!,#REF!,#REF!))","v":{"$error":"#REF!"}},{"$f":"IF(F558>=#REF!,\"\",IF(F558<=#REF!,#REF!,#REF!))","v":{"$error":"#REF!"}},{"$f":"IF(F558>#REF!,\"\",PMT(#REF!/12,#REF!,-#REF!))","v":{"$error":"#REF!"}},null,null,null,null,551,{"$f":"IF(N558>#REF!,\"\",$L$7)","v":{"$error":"#REF!"}},{"$f":"IF(N558>=#REF!,\"\",IF(N558<=#REF!,#REF!,#REF!))","v":{"$error":"#REF!"}},{"$f":"IF(N558>#REF!,\"\",#REF!)","v":{"$error":"#REF!"}},null,null,null,null,551,{"$f":"IF(V558>#REF!,\"\",$T$7)","v":{"$error":"#REF!"}},{"$f":"IF(V558>=#REF!,\"\",IF(V558<=#REF!,#REF!,#REF!))","v":{"$error":"#REF!"}},{"$f":"IF(V558>#REF!,\"\",#REF!)","v":{"$error":"#REF!"}},null,null,null,null,null,null,null,551]
[552,{"$f":"IF(A559>=#REF!,\"\",IF(A559<=#REF!,#REF!,#REF!))","v":{"$error":"#REF!"}},{"$f":"IF(A559>=#REF!,\"\",IF(A559<=#REF!,#REF!,#REF!))","v":{"$error":"#REF!"}},{"$f":"IF(A559>#REF!,\"\",#REF!)","v":{"$error":"#REF!"}},null,552,{"$f":"IF(F559>=#REF!,\"\",IF(F559<=#REF!,#REF!,#REF!))","v":{"$error":"#REF!"}},{"$f":"IF(F559>=#REF!,\"\",IF(F559<=#REF!,#REF!,#REF!))","v":{"$error":"#REF!"}},{"$f":"IF(F559>#REF!,\"\",PMT(#REF!/12,#REF!,-#REF!))","v":{"$error":"#REF!"}},null,null,null,null,552,{"$f":"IF(N559>#REF!,\"\",$L$7)","v":{"$error":"#REF!"}},{"$f":"IF(N559>=#REF!,\"\",IF(N559<=#REF!,#REF!,#REF!))","v":{"$error":"#REF!"}},{"$f":"IF(N559>#REF!,\"\",#REF!)","v":{"$error":"#REF!"}},null,null,null,null,552,{"$f":"IF(V559>#REF!,\"\",$T$7)","v":{"$error":"#REF!"}},{"$f":"IF(V559>=#REF!,\"\",IF(V559<=#REF!,#REF!,#REF!))","v":{"$error":"#REF!"}},{"$f":"IF(V559>#REF!,\"\",#REF!)","v":{"$error":"#REF!"}},null,null,null,null,null,null,null,552]
[553,{"$f":"IF(A560>=#REF!,\"\",IF(A560<=#REF!,#REF!,#REF!))","v":{"$error":"#REF!"}},{"$f":"IF(A560>=#REF!,\"\",IF(A560<=#REF!,#REF!,#REF!))","v":{"$error":"#REF!"}},{"$f":"IF(A560>#REF!,\"\",#REF!)","v":{"$error":"#REF!"}},null,553,{"$f":"IF(F560>=#REF!,\"\",IF(F560<=#REF!,#REF!,#REF!))","v":{"$error":"#REF!"}},{"$f":"IF(F560>=#REF!,\"\",IF(F560<=#REF!,#REF!,#REF!))","v":{"$error":"#REF!"}},{"$f":"IF(F560>#REF!,\"\",PMT(#REF!/12,#REF!,-#REF!))","v":{"$error":"#REF!"}},null,null,null,null,553,{"$f":"IF(N560>#REF!,\"\",$L$7)","v":{"$error":"#REF!"}},{"$f":"IF(N560>=#REF!,\"\",IF(N560<=#REF!,#REF!,#REF!))","v":{"$error":"#REF!"}},{"$f":"IF(N560>#REF!,\"\",#REF!)","v":{"$error":"#REF!"}},null,null,null,null,553,{"$f":"IF(V560>#REF!,\"\",$T$7)","v":{"$error":"#REF!"}},{"$f":"IF(V560>=#REF!,\"\",IF(V560<=#REF!,#REF!,#REF!))","v":{"$error":"#REF!"}},{"$f":"IF(V560>#REF!,\"\",#REF!)","v":{"$error":"#REF!"}},null,null,null,null,null,null,null,553]
[554,{"$f":"IF(A561>=#REF!,\"\",IF(A561<=#REF!,#REF!,#REF!))","v":{"$error":"#REF!"}},{"$f":"IF(A561>=#REF!,\"\",IF(A561<=#REF!,#REF!,#REF!))","v":{"$error":"#REF!"}},{"$f":"IF(A561>#REF!,\"\",#REF!)","v":{"$error":"#REF!"}},null,554,{"$f":"IF(F561>=#REF!,\"\",IF(F561<=#REF!,#REF!,#REF!))","v":{"$error":"#REF!"}},{"$f":"IF(F561>=#REF!,\"\",IF(F561<=#REF!,#REF!,#REF!))","v":{"$error":"#REF!"}},{"$f":"IF(F561>#REF!,\"\",PMT(#REF!/12,#REF!,-#REF!))","v":{"$error":"#REF!"}},null,null,null,null,554,{"$f":"IF(N561>#REF!,\"\",$L$7)","v":{"$error":"#REF!"}},{"$f":"IF(N561>=#REF!,\"\",IF(N561<=#REF!,#REF!,#REF!))","v":{"$error":"#REF!"}},{"$f":"IF(N561>#REF!,\"\",#REF!)","v":{"$error":"#REF!"}},null,null,null,null,554,{"$f":"IF(V561>#REF!,\"\",$T$7)","v":{"$error":"#REF!"}},{"$f":"IF(V561>=#REF!,\"\",IF(V561<=#REF!,#REF!,#REF!))","v":{"$error":"#REF!"}},{"$f":"IF(V561>#REF!,\"\",#REF!)","v":{"$error":"#REF!"}},null,null,null,null,null,null,null,554]
[555,{"$f":"IF(A562>=#REF!,\"\",IF(A562<=#REF!,#REF!,#REF!))","v":{"$error":"#REF!"}},{"$f":"IF(A562>=#REF!,\"\",IF(A562<=#REF!,#REF!,#REF!))","v":{"$error":"#REF!"}},{"$f":"IF(A562>#REF!,\"\",#REF!)","v":{"$error":"#REF!"}},null,555,{"$f":"IF(F562>=#REF!,\"\",IF(F562<=#REF!,#REF!,#REF!))","v":{"$error":"#REF!"}},{"$f":"IF(F562>=#REF!,\"\",IF(F562<=#REF!,#REF!,#REF!))","v":{"$error":"#REF!"}},{"$f":"IF(F562>#REF!,\"\",PMT(#REF!/12,#REF!,-#REF!))","v":{"$error":"#REF!"}},null,null,null,null,555,{"$f":"IF(N562>#REF!,\"\",$L$7)","v":{"$error":"#REF!"}},{"$f":"IF(N562>=#REF!,\"\",IF(N562<=#REF!,#REF!,#REF!))","v":{"$error":"#REF!"}},{"$f":"IF(N562>#REF!,\"\",#REF!)","v":{"$error":"#REF!"}},null,null,null,null,555,{"$f":"IF(V562>#REF!,\"\",$T$7)","v":{"$error":"#REF!"}},{"$f":"IF(V562>=#REF!,\"\",IF(V562<=#REF!,#REF!,#REF!))","v":{"$error":"#REF!"}},{"$f":"IF(V562>#REF!,\"\",#REF!)","v":{"$error":"#REF!"}},null,null,null,null,null,null,null,555]
[556,{"$f":"IF(A563>=#REF!,\"\",IF(A563<=#REF!,#REF!,#REF!))","v":{"$error":"#REF!"}},{"$f":"IF(A563>=#REF!,\"\",IF(A563<=#REF!,#REF!,#REF!))","v":{"$error":"#REF!"}},{"$f":"IF(A563>#REF!,\"\",#REF!)","v":{"$error":"#REF!"}},null,556,{"$f":"IF(F563>=#REF!,\"\",IF(F563<=#REF!,#REF!,#REF!))","v":{"$error":"#REF!"}},{"$f":"IF(F563>=#REF!,\"\",IF(F563<=#REF!,#REF!,#REF!))","v":{"$error":"#REF!"}},{"$f":"IF(F563>#REF!,\"\",PMT(#REF!/12,#REF!,-#REF!))","v":{"$error":"#REF!"}},null,null,null,null,556,{"$f":"IF(N563>#REF!,\"\",$L$7)","v":{"$error":"#REF!"}},{"$f":"IF(N563>=#REF!,\"\",IF(N563<=#REF!,#REF!,#REF!))","v":{"$error":"#REF!"}},{"$f":"IF(N563>#REF!,\"\",#REF!)","v":{"$error":"#REF!"}},null,null,null,null,556,{"$f":"IF(V563>#REF!,\"\",$T$7)","v":{"$error":"#REF!"}},{"$f":"IF(V563>=#REF!,\"\",IF(V563<=#REF!,#REF!,#REF!))","v":{"$error":"#REF!"}},{"$f":"IF(V563>#REF!,\"\",#REF!)","v":{"$error":"#REF!"}},null,null,null,null,null,null,null,556]
[557,{"$f":"IF(A564>=#REF!,\"\",IF(A564<=#REF!,#REF!,#REF!))","v":{"$error":"#REF!"}},{"$f":"IF(A564>=#REF!,\"\",IF(A564<=#REF!,#REF!,#REF!))","v":{"$error":"#REF!"}},{"$f":"IF(A564>#REF!,\"\",#REF!)","v":{"$error":"#REF!"}},null,557,{"$f":"IF(F564>=#REF!,\"\",IF(F564<=#REF!,#REF!,#REF!))","v":{"$error":"#REF!"}},{"$f":"IF(F564>=#REF!,\"\",IF(F564<=#REF!,#REF!,#REF!))","v":{"$error":"#REF!"}},{"$f":"IF(F564>#REF!,\"\",PMT(#REF!/12,#REF!,-#REF!))","v":{"$error":"#REF!"}},null,null,null,null,557,{"$f":"IF(N564>#REF!,\"\",$L$7)","v":{"$error":"#REF!"}},{"$f":"IF(N564>=#REF!,\"\",IF(N564<=#REF!,#REF!,#REF!))","v":{"$error":"#REF!"}},{"$f":"IF(N564>#REF!,\"\",#REF!)","v":{"$error":"#REF!"}},null,null,null,null,557,{"$f":"IF(V564>#REF!,\"\",$T$7)","v":{"$error":"#REF!"}},{"$f":"IF(V564>=#REF!,\"\",IF(V564<=#REF!,#REF!,#REF!))","v":{"$error":"#REF!"}},{"$f":"IF(V564>#REF!,\"\",#REF!)","v":{"$error":"#REF!"}},null,null,null,null,null,null,null,557]
[558,{"$f":"IF(A565>=#REF!,\"\",IF(A565<=#REF!,#REF!,#REF!))","v":{"$error":"#REF!"}},{"$f":"IF(A565>=#REF!,\"\",IF(A565<=#REF!,#REF!,#REF!))","v":{"$error":"#REF!"}},{"$f":"IF(A565>#REF!,\"\",#REF!)","v":{"$error":"#REF!"}},null,558,{"$f":"IF(F565>=#REF!,\"\",IF(F565<=#REF!,#REF!,#REF!))","v":{"$error":"#REF!"}},{"$f":"IF(F565>=#REF!,\"\",IF(F565<=#REF!,#REF!,#REF!))","v":{"$error":"#REF!"}},{"$f":"IF(F565>#REF!,\"\",PMT(#REF!/12,#REF!,-#REF!))","v":{"$error":"#REF!"}},null,null,null,null,558,{"$f":"IF(N565>#REF!,\"\",$L$7)","v":{"$error":"#REF!"}},{"$f":"IF(N565>=#REF!,\"\",IF(N565<=#REF!,#REF!,#REF!))","v":{"$error":"#REF!"}},{"$f":"IF(N565>#REF!,\"\",#REF!)","v":{"$error":"#REF!"}},null,null,null,null,558,{"$f":"IF(V565>#REF!,\"\",$T$7)","v":{"$error":"#REF!"}},{"$f":"IF(V565>=#REF!,\"\",IF(V565<=#REF!,#REF!,#REF!))","v":{"$error":"#REF!"}},{"$f":"IF(V565>#REF!,\"\",#REF!)","v":{"$error":"#REF!"}},null,null,null,null,null,null,null,558]
[559,{"$f":"IF(A566>=#REF!,\"\",IF(A566<=#REF!,#REF!,#REF!))","v":{"$error":"#REF!"}},{"$f":"IF(A566>=#REF!,\"\",IF(A566<=#REF!,#REF!,#REF!))","v":{"$error":"#REF!"}},{"$f":"IF(A566>#REF!,\"\",#REF!)","v":{"$error":"#REF!"}},null,559,{"$f":"IF(F566>=#REF!,\"\",IF(F566<=#REF!,#REF!,#REF!))","v":{"$error":"#REF!"}},{"$f":"IF(F566>=#REF!,\"\",IF(F566<=#REF!,#REF!,#REF!))","v":{"$error":"#REF!"}},{"$f":"IF(F566>#REF!,\"\",PMT(#REF!/12,#REF!,-#REF!))","v":{"$error":"#REF!"}},null,null,null,null,559,{"$f":"IF(N566>#REF!,\"\",$L$7)","v":{"$error":"#REF!"}},{"$f":"IF(N566>=#REF!,\"\",IF(N566<=#REF!,#REF!,#REF!))","v":{"$error":"#REF!"}},{"$f":"IF(N566>#REF!,\"\",#REF!)","v":{"$error":"#REF!"}},null,null,null,null,559,{"$f":"IF(V566>#REF!,\"\",$T$7)","v":{"$error":"#REF!"}},{"$f":"IF(V566>=#REF!,\"\",IF(V566<=#REF!,#REF!,#REF!))","v":{"$error":"#REF!"}},{"$f":"IF(V566>#REF!,\"\",#REF!)","v":{"$error":"#REF!"}},null,null,null,null,null,null,null,559]
[560,{"$f":"IF(A567>=#REF!,\"\",IF(A567<=#REF!,#REF!,#REF!))","v":{"$error":"#REF!"}},{"$f":"IF(A567>=#REF!,\"\",IF(A567<=#REF!,#REF!,#REF!))","v":{"$error":"#REF!"}},{"$f":"IF(A567>#REF!,\"\",#REF!)","v":{"$error":"#REF!"}},null,560,{"$f":"IF(F567>=#REF!,\"\",IF(F567<=#REF!,#REF!,#REF!))","v":{"$error":"#REF!"}},{"$f":"IF(F567>=#REF!,\"\",IF(F567<=#REF!,#REF!,#REF!))","v":{"$error":"#REF!"}},{"$f":"IF(F567>#REF!,\"\",PMT(#REF!/12,#REF!,-#REF!))","v":{"$error":"#REF!"}},null,null,null,null,560,{"$f":"IF(N567>#REF!,\"\",$L$7)","v":{"$error":"#REF!"}},{"$f":"IF(N567>=#REF!,\"\",IF(N567<=#REF!,#REF!,#REF!))","v":{"$error":"#REF!"}},{"$f":"IF(N567>#REF!,\"\",#REF!)","v":{"$error":"#REF!"}},null,null,null,null,560,{"$f":"IF(V567>#REF!,\"\",$T$7)","v":{"$error":"#REF!"}},{"$f":"IF(V567>=#REF!,\"\",IF(V567<=#REF!,#REF!,#REF!))","v":{"$error":"#REF!"}},{"$f":"IF(V567>#REF!,\"\",#REF!)","v":{"$error":"#REF!"}},null,null,null,null,null,null,null,560]
[561,{"$f":"IF(A568>=#REF!,\"\",IF(A568<=#REF!,#REF!,#REF!))","v":{"$error":"#REF!"}},{"$f":"IF(A568>=#REF!,\"\",IF(A568<=#REF!,#REF!,#REF!))","v":{"$error":"#REF!"}},{"$f":"IF(A568>#REF!,\"\",#REF!)","v":{"$error":"#REF!"}},null,561,{"$f":"IF(F568>=#REF!,\"\",IF(F568<=#REF!,#REF!,#REF!))","v":{"$error":"#REF!"}},{"$f":"IF(F568>=#REF!,\"\",IF(F568<=#REF!,#REF!,#REF!))","v":{"$error":"#REF!"}},{"$f":"IF(F568>#REF!,\"\",PMT(#REF!/12,#REF!,-#REF!))","v":{"$error":"#REF!"}},null,null,null,null,561,{"$f":"IF(N568>#REF!,\"\",$L$7)","v":{"$error":"#REF!"}},{"$f":"IF(N568>=#REF!,\"\",IF(N568<=#REF!,#REF!,#REF!))","v":{"$error":"#REF!"}},{"$f":"IF(N568>#REF!,\"\",#REF!)","v":{"$error":"#REF!"}},null,null,null,null,561,{"$f":"IF(V568>#REF!,\"\",$T$7)","v":{"$error":"#REF!"}},{"$f":"IF(V568>=#REF!,\"\",IF(V568<=#REF!,#REF!,#REF!))","v":{"$error":"#REF!"}},{"$f":"IF(V568>#REF!,\"\",#REF!)","v":{"$error":"#REF!"}},null,null,null,null,null,null,null,561]
[562,{"$f":"IF(A569>=#REF!,\"\",IF(A569<=#REF!,#REF!,#REF!))","v":{"$error":"#REF!"}},{"$f":"IF(A569>=#REF!,\"\",IF(A569<=#REF!,#REF!,#REF!))","v":{"$error":"#REF!"}},{"$f":"IF(A569>#REF!,\"\",#REF!)","v":{"$error":"#REF!"}},null,562,{"$f":"IF(F569>=#REF!,\"\",IF(F569<=#REF!,#REF!,#REF!))","v":{"$error":"#REF!"}},{"$f":"IF(F569>=#REF!,\"\",IF(F569<=#REF!,#REF!,#REF!))","v":{"$error":"#REF!"}},{"$f":"IF(F569>#REF!,\"\",PMT(#REF!/12,#REF!,-#REF!))","v":{"$error":"#REF!"}},null,null,null,null,562,{"$f":"IF(N569>#REF!,\"\",$L$7)","v":{"$error":"#REF!"}},{"$f":"IF(N569>=#REF!,\"\",IF(N569<=#REF!,#REF!,#REF!))","v":{"$error":"#REF!"}},{"$f":"IF(N569>#REF!,\"\",#REF!)","v":{"$error":"#REF!"}},null,null,null,null,562,{"$f":"IF(V569>#REF!,\"\",$T$7)","v":{"$error":"#REF!"}},{"$f":"IF(V569>=#REF!,\"\",IF(V569<=#REF!,#REF!,#REF!))","v":{"$error":"#REF!"}},{"$f":"IF(V569>#REF!,\"\",#REF!)","v":{"$error":"#REF!"}},null,null,null,null,null,null,null,562]
[563,{"$f":"IF(A570>=#REF!,\"\",IF(A570<=#REF!,#REF!,#REF!))","v":{"$error":"#REF!"}},{"$f":"IF(A570>=#REF!,\"\",IF(A570<=#REF!,#REF!,#REF!))","v":{"$error":"#REF!"}},{"$f":"IF(A570>#REF!,\"\",#REF!)","v":{"$error":"#REF!"}},null,563,{"$f":"IF(F570>=#REF!,\"\",IF(F570<=#REF!,#REF!,#REF!))","v":{"$error":"#REF!"}},{"$f":"IF(F570>=#REF!,\"\",IF(F570<=#REF!,#REF!,#REF!))","v":{"$error":"#REF!"}},{"$f":"IF(F570>#REF!,\"\",PMT(#REF!/12,#REF!,-#REF!))","v":{"$error":"#REF!"}},null,null,null,null,563,{"$f":"IF(N570>#REF!,\"\",$L$7)","v":{"$error":"#REF!"}},{"$f":"IF(N570>=#REF!,\"\",IF(N570<=#REF!,#REF!,#REF!))","v":{"$error":"#REF!"}},{"$f":"IF(N570>#REF!,\"\",#REF!)","v":{"$error":"#REF!"}},null,null,null,null,563,{"$f":"IF(V570>#REF!,\"\",$T$7)","v":{"$error":"#REF!"}},{"$f":"IF(V570>=#REF!,\"\",IF(V570<=#REF!,#REF!,#REF!))","v":{"$error":"#REF!"}},{"$f":"IF(V570>#REF!,\"\",#REF!)","v":{"$error":"#REF!"}},null,null,null,null,null,null,null,563]
[564,{"$f":"IF(A571>=#REF!,\"\",IF(A571<=#REF!,#REF!,#REF!))","v":{"$error":"#REF!"}},{"$f":"IF(A571>=#REF!,\"\",IF(A571<=#REF!,#REF!,#REF!))","v":{"$error":"#REF!"}},{"$f":"IF(A571>#REF!,\"\",#REF!)","v":{"$error":"#REF!"}},null,564,{"$f":"IF(F571>=#REF!,\"\",IF(F571<=#REF!,#REF!,#REF!))","v":{"$error":"#REF!"}},{"$f":"IF(F571>=#REF!,\"\",IF(F571<=#REF!,#REF!,#REF!))","v":{"$error":"#REF!"}},{"$f":"IF(F571>#REF!,\"\",PMT(#REF!/12,#REF!,-#REF!))","v":{"$error":"#REF!"}},null,null,null,null,564,{"$f":"IF(N571>#REF!,\"\",$L$7)","v":{"$error":"#REF!"}},{"$f":"IF(N571>=#REF!,\"\",IF(N571<=#REF!,#REF!,#REF!))","v":{"$error":"#REF!"}},{"$f":"IF(N571>#REF!,\"\",#REF!)","v":{"$error":"#REF!"}},null,null,null,null,564,{"$f":"IF(V571>#REF!,\"\",$T$7)","v":{"$error":"#REF!"}},{"$f":"IF(V571>=#REF!,\"\",IF(V571<=#REF!,#REF!,#REF!))","v":{"$error":"#REF!"}},{"$f":"IF(V571>#REF!,\"\",#REF!)","v":{"$error":"#REF!"}},null,null,null,null,null,null,null,564]
[565,{"$f":"IF(A572>=#REF!,\"\",IF(A572<=#REF!,#REF!,#REF!))","v":{"$error":"#REF!"}},{"$f":"IF(A572>=#REF!,\"\",IF(A572<=#REF!,#REF!,#REF!))","v":{"$error":"#REF!"}},{"$f":"IF(A572>#REF!,\"\",#REF!)","v":{"$error":"#REF!"}},null,565,{"$f":"IF(F572>=#REF!,\"\",IF(F572<=#REF!,#REF!,#REF!))","v":{"$error":"#REF!"}},{"$f":"IF(F572>=#REF!,\"\",IF(F572<=#REF!,#REF!,#REF!))","v":{"$error":"#REF!"}},{"$f":"IF(F572>#REF!,\"\",PMT(#REF!/12,#REF!,-#REF!))","v":{"$error":"#REF!"}},null,null,null,null,565,{"$f":"IF(N572>#REF!,\"\",$L$7)","v":{"$error":"#REF!"}},{"$f":"IF(N572>=#REF!,\"\",IF(N572<=#REF!,#REF!,#REF!))","v":{"$error":"#REF!"}},{"$f":"IF(N572>#REF!,\"\",#REF!)","v":{"$error":"#REF!"}},null,null,null,null,565,{"$f":"IF(V572>#REF!,\"\",$T$7)","v":{"$error":"#REF!"}},{"$f":"IF(V572>=#REF!,\"\",IF(V572<=#REF!,#REF!,#REF!))","v":{"$error":"#REF!"}},{"$f":"IF(V572>#REF!,\"\",#REF!)","v":{"$error":"#REF!"}},null,null,null,null,null,null,null,565]
[566,{"$f":"IF(A573>=#REF!,\"\",IF(A573<=#REF!,#REF!,#REF!))","v":{"$error":"#REF!"}},{"$f":"IF(A573>=#REF!,\"\",IF(A573<=#REF!,#REF!,#REF!))","v":{"$error":"#REF!"}},{"$f":"IF(A573>#REF!,\"\",#REF!)","v":{"$error":"#REF!"}},null,566,{"$f":"IF(F573>=#REF!,\"\",IF(F573<=#REF!,#REF!,#REF!))","v":{"$error":"#REF!"}},{"$f":"IF(F573>=#REF!,\"\",IF(F573<=#REF!,#REF!,#REF!))","v":{"$error":"#REF!"}},{"$f":"IF(F573>#REF!,\"\",PMT(#REF!/12,#REF!,-#REF!))","v":{"$error":"#REF!"}},null,null,null,null,566,{"$f":"IF(N573>#REF!,\"\",$L$7)","v":{"$error":"#REF!"}},{"$f":"IF(N573>=#REF!,\"\",IF(N573<=#REF!,#REF!,#REF!))","v":{"$error":"#REF!"}},{"$f":"IF(N573>#REF!,\"\",#REF!)","v":{"$error":"#REF!"}},null,null,null,null,566,{"$f":"IF(V573>#REF!,\"\",$T$7)","v":{"$error":"#REF!"}},{"$f":"IF(V573>=#REF!,\"\",IF(V573<=#REF!,#REF!,#REF!))","v":{"$error":"#REF!"}},{"$f":"IF(V573>#REF!,\"\",#REF!)","v":{"$error":"#REF!"}},null,null,null,null,null,null,null,566]
[567,{"$f":"IF(A574>=#REF!,\"\",IF(A574<=#REF!,#REF!,#REF!))","v":{"$error":"#REF!"}},{"$f":"IF(A574>=#REF!,\"\",IF(A574<=#REF!,#REF!,#REF!))","v":{"$error":"#REF!"}},{"$f":"IF(A574>#REF!,\"\",#REF!)","v":{"$error":"#REF!"}},null,567,{"$f":"IF(F574>=#REF!,\"\",IF(F574<=#REF!,#REF!,#REF!))","v":{"$error":"#REF!"}},{"$f":"IF(F574>=#REF!,\"\",IF(F574<=#REF!,#REF!,#REF!))","v":{"$error":"#REF!"}},{"$f":"IF(F574>#REF!,\"\",PMT(#REF!/12,#REF!,-#REF!))","v":{"$error":"#REF!"}},null,null,null,null,567,{"$f":"IF(N574>#REF!,\"\",$L$7)","v":{"$error":"#REF!"}},{"$f":"IF(N574>=#REF!,\"\",IF(N574<=#REF!,#REF!,#REF!))","v":{"$error":"#REF!"}},{"$f":"IF(N574>#REF!,\"\",#REF!)","v":{"$error":"#REF!"}},null,null,null,null,567,{"$f":"IF(V574>#REF!,\"\",$T$7)","v":{"$error":"#REF!"}},{"$f":"IF(V574>=#REF!,\"\",IF(V574<=#REF!,#REF!,#REF!))","v":{"$error":"#REF!"}},{"$f":"IF(V574>#REF!,\"\",#REF!)","v":{"$error":"#REF!"}},null,null,null,null,null,null,null,567]
[568,{"$f":"IF(A575>=#REF!,\"\",IF(A575<=#REF!,#REF!,#REF!))","v":{"$error":"#REF!"}},{"$f":"IF(A575>=#REF!,\"\",IF(A575<=#REF!,#REF!,#REF!))","v":{"$error":"#REF!"}},{"$f":"IF(A575>#REF!,\"\",#REF!)","v":{"$error":"#REF!"}},null,568,{"$f":"IF(F575>=#REF!,\"\",IF(F575<=#REF!,#REF!,#REF!))","v":{"$error":"#REF!"}},{"$f":"IF(F575>=#REF!,\"\",IF(F575<=#REF!,#REF!,#REF!))","v":{"$error":"#REF!"}},{"$f":"IF(F575>#REF!,\"\",PMT(#REF!/12,#REF!,-#REF!))","v":{"$error":"#REF!"}},null,null,null,null,568,{"$f":"IF(N575>#REF!,\"\",$L$7)","v":{"$error":"#REF!"}},{"$f":"IF(N575>=#REF!,\"\",IF(N575<=#REF!,#REF!,#REF!))","v":{"$error":"#REF!"}},{"$f":"IF(N575>#REF!,\"\",#REF!)","v":{"$error":"#REF!"}},null,null,null,null,568,{"$f":"IF(V575>#REF!,\"\",$T$7)","v":{"$error":"#REF!"}},{"$f":"IF(V575>=#REF!,\"\",IF(V575<=#REF!,#REF!,#REF!))","v":{"$error":"#REF!"}},{"$f":"IF(V575>#REF!,\"\",#REF!)","v":{"$error":"#REF!"}},null,null,null,null,null,null,null,568]
[569,{"$f":"IF(A576>=#REF!,\"\",IF(A576<=#REF!,#REF!,#REF!))","v":{"$error":"#REF!"}},{"$f":"IF(A576>=#REF!,\"\",IF(A576<=#REF!,#REF!,#REF!))","v":{"$error":"#REF!"}},{"$f":"IF(A576>#REF!,\"\",#REF!)","v":{"$error":"#REF!"}},null,569,{"$f":"IF(F576>=#REF!,\"\",IF(F576<=#REF!,#REF!,#REF!))","v":{"$error":"#REF!"}},{"$f":"IF(F576>=#REF!,\"\",IF(F576<=#REF!,#REF!,#REF!))","v":{"$error":"#REF!"}},{"$f":"IF(F576>#REF!,\"\",PMT(#REF!/12,#REF!,-#REF!))","v":{"$error":"#REF!"}},null,null,null,null,569,{"$f":"IF(N576>#REF!,\"\",$L$7)","v":{"$error":"#REF!"}},{"$f":"IF(N576>=#REF!,\"\",IF(N576<=#REF!,#REF!,#REF!))","v":{"$error":"#REF!"}},{"$f":"IF(N576>#REF!,\"\",#REF!)","v":{"$error":"#REF!"}},null,null,null,null,569,{"$f":"IF(V576>#REF!,\"\",$T$7)","v":{"$error":"#REF!"}},{"$f":"IF(V576>=#REF!,\"\",IF(V576<=#REF!,#REF!,#REF!))","v":{"$error":"#REF!"}},{"$f":"IF(V576>#REF!,\"\",#REF!)","v":{"$error":"#REF!"}},null,null,null,null,null,null,null,569]
[570,{"$f":"IF(A577>=#REF!,\"\",IF(A577<=#REF!,#REF!,#REF!))","v":{"$error":"#REF!"}},{"$f":"IF(A577>=#REF!,\"\",IF(A577<=#REF!,#REF!,#REF!))","v":{"$error":"#REF!"}},{"$f":"IF(A577>#REF!,\"\",#REF!)","v":{"$error":"#REF!"}},null,570,{"$f":"IF(F577>=#REF!,\"\",IF(F577<=#REF!,#REF!,#REF!))","v":{"$error":"#REF!"}},{"$f":"IF(F577>=#REF!,\"\",IF(F577<=#REF!,#REF!,#REF!))","v":{"$error":"#REF!"}},{"$f":"IF(F577>#REF!,\"\",PMT(#REF!/12,#REF!,-#REF!))","v":{"$error":"#REF!"}},null,null,null,null,570,{"$f":"IF(N577>#REF!,\"\",$L$7)","v":{"$error":"#REF!"}},{"$f":"IF(N577>=#REF!,\"\",IF(N577<=#REF!,#REF!,#REF!))","v":{"$error":"#REF!"}},{"$f":"IF(N577>#REF!,\"\",#REF!)","v":{"$error":"#REF!"}},null,null,null,null,570,{"$f":"IF(V577>#REF!,\"\",$T$7)","v":{"$error":"#REF!"}},{"$f":"IF(V577>=#REF!,\"\",IF(V577<=#REF!,#REF!,#REF!))","v":{"$error":"#REF!"}},{"$f":"IF(V577>#REF!,\"\",#REF!)","v":{"$error":"#REF!"}},null,null,null,null,null,null,null,570]
[571,{"$f":"IF(A578>=#REF!,\"\",IF(A578<=#REF!,#REF!,#REF!))","v":{"$error":"#REF!"}},{"$f":"IF(A578>=#REF!,\"\",IF(A578<=#REF!,#REF!,#REF!))","v":{"$error":"#REF!"}},{"$f":"IF(A578>#REF!,\"\",#REF!)","v":{"$error":"#REF!"}},null,571,{"$f":"IF(F578>=#REF!,\"\",IF(F578<=#REF!,#REF!,#REF!))","v":{"$error":"#REF!"}},{"$f":"IF(F578>=#REF!,\"\",IF(F578<=#REF!,#REF!,#REF!))","v":{"$error":"#REF!"}},{"$f":"IF(F578>#REF!,\"\",PMT(#REF!/12,#REF!,-#REF!))","v":{"$error":"#REF!"}},null,null,null,null,571,{"$f":"IF(N578>#REF!,\"\",$L$7)","v":{"$error":"#REF!"}},{"$f":"IF(N578>=#REF!,\"\",IF(N578<=#REF!,#REF!,#REF!))","v":{"$error":"#REF!"}},{"$f":"IF(N578>#REF!,\"\",#REF!)","v":{"$error":"#REF!"}},null,null,null,null,571,{"$f":"IF(V578>#REF!,\"\",$T$7)","v":{"$error":"#REF!"}},{"$f":"IF(V578>=#REF!,\"\",IF(V578<=#REF!,#REF!,#REF!))","v":{"$error":"#REF!"}},{"$f":"IF(V578>#REF!,\"\",#REF!)","v":{"$error":"#REF!"}},null,null,null,null,null,null,null,571]
[572,{"$f":"IF(A579>=#REF!,\"\",IF(A579<=#REF!,#REF!,#REF!))","v":{"$error":"#REF!"}},{"$f":"IF(A579>=#REF!,\"\",IF(A579<=#REF!,#REF!,#REF!))","v":{"$error":"#REF!"}},{"$f":"IF(A579>#REF!,\"\",#REF!)","v":{"$error":"#REF!"}},null,572,{"$f":"IF(F579>=#REF!,\"\",IF(F579<=#REF!,#REF!,#REF!))","v":{"$error":"#REF!"}},{"$f":"IF(F579>=#REF!,\"\",IF(F579<=#REF!,#REF!,#REF!))","v":{"$error":"#REF!"}},{"$f":"IF(F579>#REF!,\"\",PMT(#REF!/12,#REF!,-#REF!))","v":{"$error":"#REF!"}},null,null,null,null,572,{"$f":"IF(N579>#REF!,\"\",$L$7)","v":{"$error":"#REF!"}},{"$f":"IF(N579>=#REF!,\"\",IF(N579<=#REF!,#REF!,#REF!))","v":{"$error":"#REF!"}},{"$f":"IF(N579>#REF!,\"\",#REF!)","v":{"$error":"#REF!"}},null,null,null,null,572,{"$f":"IF(V579>#REF!,\"\",$T$7)","v":{"$error":"#REF!"}},{"$f":"IF(V579>=#REF!,\"\",IF(V579<=#REF!,#REF!,#REF!))","v":{"$error":"#REF!"}},{"$f":"IF(V579>#REF!,\"\",#REF!)","v":{"$error":"#REF!"}},null,null,null,null,null,null,null,572]
[573,{"$f":"IF(A580>=#REF!,\"\",IF(A580<=#REF!,#REF!,#REF!))","v":{"$error":"#REF!"}},{"$f":"IF(A580>=#REF!,\"\",IF(A580<=#REF!,#REF!,#REF!))","v":{"$error":"#REF!"}},{"$f":"IF(A580>#REF!,\"\",#REF!)","v":{"$error":"#REF!"}},null,573,{"$f":"IF(F580>=#REF!,\"\",IF(F580<=#REF!,#REF!,#REF!))","v":{"$error":"#REF!"}},{"$f":"IF(F580>=#REF!,\"\",IF(F580<=#REF!,#REF!,#REF!))","v":{"$error":"#REF!"}},{"$f":"IF(F580>#REF!,\"\",PMT(#REF!/12,#REF!,-#REF!))","v":{"$error":"#REF!"}},null,null,null,null,573,{"$f":"IF(N580>#REF!,\"\",$L$7)","v":{"$error":"#REF!"}},{"$f":"IF(N580>=#REF!,\"\",IF(N580<=#REF!,#REF!,#REF!))","v":{"$error":"#REF!"}},{"$f":"IF(N580>#REF!,\"\",#REF!)","v":{"$error":"#REF!"}},null,null,null,null,573,{"$f":"IF(V580>#REF!,\"\",$T$7)","v":{"$error":"#REF!"}},{"$f":"IF(V580>=#REF!,\"\",IF(V580<=#REF!,#REF!,#REF!))","v":{"$error":"#REF!"}},{"$f":"IF(V580>#REF!,\"\",#REF!)","v":{"$error":"#REF!"}},null,null,null,null,null,null,null,573]
[574,{"$f":"IF(A581>=#REF!,\"\",IF(A581<=#REF!,#REF!,#REF!))","v":{"$error":"#REF!"}},{"$f":"IF(A581>=#REF!,\"\",IF(A581<=#REF!,#REF!,#REF!))","v":{"$error":"#REF!"}},{"$f":"IF(A581>#REF!,\"\",#REF!)","v":{"$error":"#REF!"}},null,574,{"$f":"IF(F581>=#REF!,\"\",IF(F581<=#REF!,#REF!,#REF!))","v":{"$error":"#REF!"}},{"$f":"IF(F581>=#REF!,\"\",IF(F581<=#REF!,#REF!,#REF!))","v":{"$error":"#REF!"}},{"$f":"IF(F581>#REF!,\"\",PMT(#REF!/12,#REF!,-#REF!))","v":{"$error":"#REF!"}},null,null,null,null,574,{"$f":"IF(N581>#REF!,\"\",$L$7)","v":{"$error":"#REF!"}},{"$f":"IF(N581>=#REF!,\"\",IF(N581<=#REF!,#REF!,#REF!))","v":{"$error":"#REF!"}},{"$f":"IF(N581>#REF!,\"\",#REF!)","v":{"$error":"#REF!"}},null,null,null,null,574,{"$f":"IF(V581>#REF!,\"\",$T$7)","v":{"$error":"#REF!"}},{"$f":"IF(V581>=#REF!,\"\",IF(V581<=#REF!,#REF!,#REF!))","v":{"$error":"#REF!"}},{"$f":"IF(V581>#REF!,\"\",#REF!)","v":{"$error":"#REF!"}},null,null,null,null,null,null,null,574]
[575,{"$f":"IF(A582>=#REF!,\"\",IF(A582<=#REF!,#REF!,#REF!))","v":{"$error":"#REF!"}},{"$f":"IF(A582>=#REF!,\"\",IF(A582<=#REF!,#REF!,#REF!))","v":{"$error":"#REF!"}},{"$f":"IF(A582>#REF!,\"\",#REF!)","v":{"$error":"#REF!"}},null,575,{"$f":"IF(F582>=#REF!,\"\",IF(F582<=#REF!,#REF!,#REF!))","v":{"$error":"#REF!"}},{"$f":"IF(F582>=#REF!,\"\",IF(F582<=#REF!,#REF!,#REF!))","v":{"$error":"#REF!"}},{"$f":"IF(F582>#REF!,\"\",PMT(#REF!/12,#REF!,-#REF!))","v":{"$error":"#REF!"}},null,null,null,null,575,{"$f":"IF(N582>#REF!,\"\",$L$7)","v":{"$error":"#REF!"}},{"$f":"IF(N582>=#REF!,\"\",IF(N582<=#REF!,#REF!,#REF!))","v":{"$error":"#REF!"}},{"$f":"IF(N582>#REF!,\"\",#REF!)","v":{"$error":"#REF!"}},null,null,null,null,575,{"$f":"IF(V582>#REF!,\"\",$T$7)","v":{"$error":"#REF!"}},{"$f":"IF(V582>=#REF!,\"\",IF(V582<=#REF!,#REF!,#REF!))","v":{"$error":"#REF!"}},{"$f":"IF(V582>#REF!,\"\",#REF!)","v":{"$error":"#REF!"}},null,null,null,null,null,null,null,575]
[576,{"$f":"IF(A583>=#REF!,\"\",IF(A583<=#REF!,#REF!,#REF!))","v":{"$error":"#REF!"}},{"$f":"IF(A583>=#REF!,\"\",IF(A583<=#REF!,#REF!,#REF!))","v":{"$error":"#REF!"}},{"$f":"IF(A583>#REF!,\"\",#REF!)","v":{"$error":"#REF!"}},null,576,{"$f":"IF(F583>=#REF!,\"\",IF(F583<=#REF!,#REF!,#REF!))","v":{"$error":"#REF!"}},{"$f":"IF(F583>=#REF!,\"\",IF(F583<=#REF!,#REF!,#REF!))","v":{"$error":"#REF!"}},{"$f":"IF(F583>#REF!,\"\",PMT(#REF!/12,#REF!,-#REF!))","v":{"$error":"#REF!"}},null,null,null,null,576,{"$f":"IF(N583>#REF!,\"\",$L$7)","v":{"$error":"#REF!"}},{"$f":"IF(N583>=#REF!,\"\",IF(N583<=#REF!,#REF!,#REF!))","v":{"$error":"#REF!"}},{"$f":"IF(N583>#REF!,\"\",#REF!)","v":{"$error":"#REF!"}},null,null,null,null,576,{"$f":"IF(V583>#REF!,\"\",$T$7)","v":{"$error":"#REF!"}},{"$f":"IF(V583>=#REF!,\"\",IF(V583<=#REF!,#REF!,#REF!))","v":{"$error":"#REF!"}},{"$f":"IF(V583>#REF!,\"\",#REF!)","v":{"$error":"#REF!"}},null,null,null,null,null,null,null,576]
[577,{"$f":"IF(A584>=#REF!,\"\",IF(A584<=#REF!,#REF!,#REF!))","v":{"$error":"#REF!"}},{"$f":"IF(A584>=#REF!,\"\",IF(A584<=#REF!,#REF!,#REF!))","v":{"$error":"#REF!"}},{"$f":"IF(A584>#REF!,\"\",#REF!)","v":{"$error":"#REF!"}},null,577,{"$f":"IF(F584>=#REF!,\"\",IF(F584<=#REF!,#REF!,#REF!))","v":{"$error":"#REF!"}},{"$f":"IF(F584>=#REF!,\"\",IF(F584<=#REF!,#REF!,#REF!))","v":{"$error":"#REF!"}},{"$f":"IF(F584>#REF!,\"\",PMT(#REF!/12,#REF!,-#REF!))","v":{"$error":"#REF!"}},null,null,null,null,577,{"$f":"IF(N584>#REF!,\"\",$L$7)","v":{"$error":"#REF!"}},{"$f":"IF(N584>=#REF!,\"\",IF(N584<=#REF!,#REF!,#REF!))","v":{"$error":"#REF!"}},{"$f":"IF(N584>#REF!,\"\",#REF!)","v":{"$error":"#REF!"}},null,null,null,null,577,{"$f":"IF(V584>#REF!,\"\",$T$7)","v":{"$error":"#REF!"}},{"$f":"IF(V584>=#REF!,\"\",IF(V584<=#REF!,#REF!,#REF!))","v":{"$error":"#REF!"}},{"$f":"IF(V584>#REF!,\"\",#REF!)","v":{"$error":"#REF!"}},null,null,null,null,null,null,null,577]
[578,{"$f":"IF(A585>=#REF!,\"\",IF(A585<=#REF!,#REF!,#REF!))","v":{"$error":"#REF!"}},{"$f":"IF(A585>=#REF!,\"\",IF(A585<=#REF!,#REF!,#REF!))","v":{"$error":"#REF!"}},{"$f":"IF(A585>#REF!,\"\",#REF!)","v":{"$error":"#REF!"}},null,578,{"$f":"IF(F585>=#REF!,\"\",IF(F585<=#REF!,#REF!,#REF!))","v":{"$error":"#REF!"}},{"$f":"IF(F585>=#REF!,\"\",IF(F585<=#REF!,#REF!,#REF!))","v":{"$error":"#REF!"}},{"$f":"IF(F585>#REF!,\"\",PMT(#REF!/12,#REF!,-#REF!))","v":{"$error":"#REF!"}},null,null,null,null,578,{"$f":"IF(N585>#REF!,\"\",$L$7)","v":{"$error":"#REF!"}},{"$f":"IF(N585>=#REF!,\"\",IF(N585<=#REF!,#REF!,#REF!))","v":{"$error":"#REF!"}},{"$f":"IF(N585>#REF!,\"\",#REF!)","v":{"$error":"#REF!"}},null,null,null,null,578,{"$f":"IF(V585>#REF!,\"\",$T$7)","v":{"$error":"#REF!"}},{"$f":"IF(V585>=#REF!,\"\",IF(V585<=#REF!,#REF!,#REF!))","v":{"$error":"#REF!"}},{"$f":"IF(V585>#REF!,\"\",#REF!)","v":{"$error":"#REF!"}},null,null,null,null,null,null,null,578]
[579,{"$f":"IF(A586>=#REF!,\"\",IF(A586<=#REF!,#REF!,#REF!))","v":{"$error":"#REF!"}},{"$f":"IF(A586>=#REF!,\"\",IF(A586<=#REF!,#REF!,#REF!))","v":{"$error":"#REF!"}},{"$f":"IF(A586>#REF!,\"\",#REF!)","v":{"$error":"#REF!"}},null,579,{"$f":"IF(F586>=#REF!,\"\",IF(F586<=#REF!,#REF!,#REF!))","v":{"$error":"#REF!"}},{"$f":"IF(F586>=#REF!,\"\",IF(F586<=#REF!,#REF!,#REF!))","v":{"$error":"#REF!"}},{"$f":"IF(F586>#REF!,\"\",PMT(#REF!/12,#REF!,-#REF!))","v":{"$error":"#REF!"}},null,null,null,null,579,{"$f":"IF(N586>#REF!,\"\",$L$7)","v":{"$error":"#REF!"}},{"$f":"IF(N586>=#REF!,\"\",IF(N586<=#REF!,#REF!,#REF!))","v":{"$error":"#REF!"}},{"$f":"IF(N586>#REF!,\"\",#REF!)","v":{"$error":"#REF!"}},null,null,null,null,579,{"$f":"IF(V586>#REF!,\"\",$T$7)","v":{"$error":"#REF!"}},{"$f":"IF(V586>=#REF!,\"\",IF(V586<=#REF!,#REF!,#REF!))","v":{"$error":"#REF!"}},{"$f":"IF(V586>#REF!,\"\",#REF!)","v":{"$error":"#REF!"}},null,null,null,null,null,null,null,579]
[580,{"$f":"IF(A587>=#REF!,\"\",IF(A587<=#REF!,#REF!,#REF!))","v":{"$error":"#REF!"}},{"$f":"IF(A587>=#REF!,\"\",IF(A587<=#REF!,#REF!,#REF!))","v":{"$error":"#REF!"}},{"$f":"IF(A587>#REF!,\"\",#REF!)","v":{"$error":"#REF!"}},null,580,{"$f":"IF(F587>=#REF!,\"\",IF(F587<=#REF!,#REF!,#REF!))","v":{"$error":"#REF!"}},{"$f":"IF(F587>=#REF!,\"\",IF(F587<=#REF!,#REF!,#REF!))","v":{"$error":"#REF!"}},{"$f":"IF(F587>#REF!,\"\",PMT(#REF!/12,#REF!,-#REF!))","v":{"$error":"#REF!"}},null,null,null,null,580,{"$f":"IF(N587>#REF!,\"\",$L$7)","v":{"$error":"#REF!"}},{"$f":"IF(N587>=#REF!,\"\",IF(N587<=#REF!,#REF!,#REF!))","v":{"$error":"#REF!"}},{"$f":"IF(N587>#REF!,\"\",#REF!)","v":{"$error":"#REF!"}},null,null,null,null,580,{"$f":"IF(V587>#REF!,\"\",$T$7)","v":{"$error":"#REF!"}},{"$f":"IF(V587>=#REF!,\"\",IF(V587<=#REF!,#REF!,#REF!))","v":{"$error":"#REF!"}},{"$f":"IF(V587>#REF!,\"\",#REF!)","v":{"$error":"#REF!"}},null,null,null,null,null,null,null,580]
[581,{"$f":"IF(A588>=#REF!,\"\",IF(A588<=#REF!,#REF!,#REF!))","v":{"$error":"#REF!"}},{"$f":"IF(A588>=#REF!,\"\",IF(A588<=#REF!,#REF!,#REF!))","v":{"$error":"#REF!"}},{"$f":"IF(A588>#REF!,\"\",#REF!)","v":{"$error":"#REF!"}},null,581,{"$f":"IF(F588>=#REF!,\"\",IF(F588<=#REF!,#REF!,#REF!))","v":{"$error":"#REF!"}},{"$f":"IF(F588>=#REF!,\"\",IF(F588<=#REF!,#REF!,#REF!))","v":{"$error":"#REF!"}},{"$f":"IF(F588>#REF!,\"\",PMT(#REF!/12,#REF!,-#REF!))","v":{"$error":"#REF!"}},null,null,null,null,581,{"$f":"IF(N588>#REF!,\"\",$L$7)","v":{"$error":"#REF!"}},{"$f":"IF(N588>=#REF!,\"\",IF(N588<=#REF!,#REF!,#REF!))","v":{"$error":"#REF!"}},{"$f":"IF(N588>#REF!,\"\",#REF!)","v":{"$error":"#REF!"}},null,null,null,null,581,{"$f":"IF(V588>#REF!,\"\",$T$7)","v":{"$error":"#REF!"}},{"$f":"IF(V588>=#REF!,\"\",IF(V588<=#REF!,#REF!,#REF!))","v":{"$error":"#REF!"}},{"$f":"IF(V588>#REF!,\"\",#REF!)","v":{"$error":"#REF!"}},null,null,null,null,null,null,null,581]
[582,{"$f":"IF(A589>=#REF!,\"\",IF(A589<=#REF!,#REF!,#REF!))","v":{"$error":"#REF!"}},{"$f":"IF(A589>=#REF!,\"\",IF(A589<=#REF!,#REF!,#REF!))","v":{"$error":"#REF!"}},{"$f":"IF(A589>#REF!,\"\",#REF!)","v":{"$error":"#REF!"}},null,582,{"$f":"IF(F589>=#REF!,\"\",IF(F589<=#REF!,#REF!,#REF!))","v":{"$error":"#REF!"}},{"$f":"IF(F589>=#REF!,\"\",IF(F589<=#REF!,#REF!,#REF!))","v":{"$error":"#REF!"}},{"$f":"IF(F589>#REF!,\"\",PMT(#REF!/12,#REF!,-#REF!))","v":{"$error":"#REF!"}},null,null,null,null,582,{"$f":"IF(N589>#REF!,\"\",$L$7)","v":{"$error":"#REF!"}},{"$f":"IF(N589>=#REF!,\"\",IF(N589<=#REF!,#REF!,#REF!))","v":{"$error":"#REF!"}},{"$f":"IF(N589>#REF!,\"\",#REF!)","v":{"$error":"#REF!"}},null,null,null,null,582,{"$f":"IF(V589>#REF!,\"\",$T$7)","v":{"$error":"#REF!"}},{"$f":"IF(V589>=#REF!,\"\",IF(V589<=#REF!,#REF!,#REF!))","v":{"$error":"#REF!"}},{"$f":"IF(V589>#REF!,\"\",#REF!)","v":{"$error":"#REF!"}},null,null,null,null,null,null,null,582]
[583,{"$f":"IF(A590>=#REF!,\"\",IF(A590<=#REF!,#REF!,#REF!))","v":{"$error":"#REF!"}},{"$f":"IF(A590>=#REF!,\"\",IF(A590<=#REF!,#REF!,#REF!))","v":{"$error":"#REF!"}},{"$f":"IF(A590>#REF!,\"\",#REF!)","v":{"$error":"#REF!"}},null,583,{"$f":"IF(F590>=#REF!,\"\",IF(F590<=#REF!,#REF!,#REF!))","v":{"$error":"#REF!"}},{"$f":"IF(F590>=#REF!,\"\",IF(F590<=#REF!,#REF!,#REF!))","v":{"$error":"#REF!"}},{"$f":"IF(F590>#REF!,\"\",PMT(#REF!/12,#REF!,-#REF!))","v":{"$error":"#REF!"}},null,null,null,null,583,{"$f":"IF(N590>#REF!,\"\",$L$7)","v":{"$error":"#REF!"}},{"$f":"IF(N590>=#REF!,\"\",IF(N590<=#REF!,#REF!,#REF!))","v":{"$error":"#REF!"}},{"$f":"IF(N590>#REF!,\"\",#REF!)","v":{"$error":"#REF!"}},null,null,null,null,583,{"$f":"IF(V590>#REF!,\"\",$T$7)","v":{"$error":"#REF!"}},{"$f":"IF(V590>=#REF!,\"\",IF(V590<=#REF!,#REF!,#REF!))","v":{"$error":"#REF!"}},{"$f":"IF(V590>#REF!,\"\",#REF!)","v":{"$error":"#REF!"}},null,null,null,null,null,null,null,583]
[584,{"$f":"IF(A591>=#REF!,\"\",IF(A591<=#REF!,#REF!,#REF!))","v":{"$error":"#REF!"}},{"$f":"IF(A591>=#REF!,\"\",IF(A591<=#REF!,#REF!,#REF!))","v":{"$error":"#REF!"}},{"$f":"IF(A591>#REF!,\"\",#REF!)","v":{"$error":"#REF!"}},null,584,{"$f":"IF(F591>=#REF!,\"\",IF(F591<=#REF!,#REF!,#REF!))","v":{"$error":"#REF!"}},{"$f":"IF(F591>=#REF!,\"\",IF(F591<=#REF!,#REF!,#REF!))","v":{"$error":"#REF!"}},{"$f":"IF(F591>#REF!,\"\",PMT(#REF!/12,#REF!,-#REF!))","v":{"$error":"#REF!"}},null,null,null,null,584,{"$f":"IF(N591>#REF!,\"\",$L$7)","v":{"$error":"#REF!"}},{"$f":"IF(N591>=#REF!,\"\",IF(N591<=#REF!,#REF!,#REF!))","v":{"$error":"#REF!"}},{"$f":"IF(N591>#REF!,\"\",#REF!)","v":{"$error":"#REF!"}},null,null,null,null,584,{"$f":"IF(V591>#REF!,\"\",$T$7)","v":{"$error":"#REF!"}},{"$f":"IF(V591>=#REF!,\"\",IF(V591<=#REF!,#REF!,#REF!))","v":{"$error":"#REF!"}},{"$f":"IF(V591>#REF!,\"\",#REF!)","v":{"$error":"#REF!"}},null,null,null,null,null,null,null,584]
[585,{"$f":"IF(A592>=#REF!,\"\",IF(A592<=#REF!,#REF!,#REF!))","v":{"$error":"#REF!"}},{"$f":"IF(A592>=#REF!,\"\",IF(A592<=#REF!,#REF!,#REF!))","v":{"$error":"#REF!"}},{"$f":"IF(A592>#REF!,\"\",#REF!)","v":{"$error":"#REF!"}},null,585,{"$f":"IF(F592>=#REF!,\"\",IF(F592<=#REF!,#REF!,#REF!))","v":{"$error":"#REF!"}},{"$f":"IF(F592>=#REF!,\"\",IF(F592<=#REF!,#REF!,#REF!))","v":{"$error":"#REF!"}},{"$f":"IF(F592>#REF!,\"\",PMT(#REF!/12,#REF!,-#REF!))","v":{"$error":"#REF!"}},null,null,null,null,585,{"$f":"IF(N592>#REF!,\"\",$L$7)","v":{"$error":"#REF!"}},{"$f":"IF(N592>=#REF!,\"\",IF(N592<=#REF!,#REF!,#REF!))","v":{"$error":"#REF!"}},{"$f":"IF(N592>#REF!,\"\",#REF!)","v":{"$error":"#REF!"}},null,null,null,null,585,{"$f":"IF(V592>#REF!,\"\",$T$7)","v":{"$error":"#REF!"}},{"$f":"IF(V592>=#REF!,\"\",IF(V592<=#REF!,#REF!,#REF!))","v":{"$error":"#REF!"}},{"$f":"IF(V592>#REF!,\"\",#REF!)","v":{"$error":"#REF!"}},null,null,null,null,null,null,null,585]
[586,{"$f":"IF(A593>=#REF!,\"\",IF(A593<=#REF!,#REF!,#REF!))","v":{"$error":"#REF!"}},{"$f":"IF(A593>=#REF!,\"\",IF(A593<=#REF!,#REF!,#REF!))","v":{"$error":"#REF!"}},{"$f":"IF(A593>#REF!,\"\",#REF!)","v":{"$error":"#REF!"}},null,586,{"$f":"IF(F593>=#REF!,\"\",IF(F593<=#REF!,#REF!,#REF!))","v":{"$error":"#REF!"}},{"$f":"IF(F593>=#REF!,\"\",IF(F593<=#REF!,#REF!,#REF!))","v":{"$error":"#REF!"}},{"$f":"IF(F593>#REF!,\"\",PMT(#REF!/12,#REF!,-#REF!))","v":{"$error":"#REF!"}},null,null,null,null,586,{"$f":"IF(N593>#REF!,\"\",$L$7)","v":{"$error":"#REF!"}},{"$f":"IF(N593>=#REF!,\"\",IF(N593<=#REF!,#REF!,#REF!))","v":{"$error":"#REF!"}},{"$f":"IF(N593>#REF!,\"\",#REF!)","v":{"$error":"#REF!"}},null,null,null,null,586,{"$f":"IF(V593>#REF!,\"\",$T$7)","v":{"$error":"#REF!"}},{"$f":"IF(V593>=#REF!,\"\",IF(V593<=#REF!,#REF!,#REF!))","v":{"$error":"#REF!"}},{"$f":"IF(V593>#REF!,\"\",#REF!)","v":{"$error":"#REF!"}},null,null,null,null,null,null,null,586]
[587,{"$f":"IF(A594>=#REF!,\"\",IF(A594<=#REF!,#REF!,#REF!))","v":{"$error":"#REF!"}},{"$f":"IF(A594>=#REF!,\"\",IF(A594<=#REF!,#REF!,#REF!))","v":{"$error":"#REF!"}},{"$f":"IF(A594>#REF!,\"\",#REF!)","v":{"$error":"#REF!"}},null,587,{"$f":"IF(F594>=#REF!,\"\",IF(F594<=#REF!,#REF!,#REF!))","v":{"$error":"#REF!"}},{"$f":"IF(F594>=#REF!,\"\",IF(F594<=#REF!,#REF!,#REF!))","v":{"$error":"#REF!"}},{"$f":"IF(F594>#REF!,\"\",PMT(#REF!/12,#REF!,-#REF!))","v":{"$error":"#REF!"}},null,null,null,null,587,{"$f":"IF(N594>#REF!,\"\",$L$7)","v":{"$error":"#REF!"}},{"$f":"IF(N594>=#REF!,\"\",IF(N594<=#REF!,#REF!,#REF!))","v":{"$error":"#REF!"}},{"$f":"IF(N594>#REF!,\"\",#REF!)","v":{"$error":"#REF!"}},null,null,null,null,587,{"$f":"IF(V594>#REF!,\"\",$T$7)","v":{"$error":"#REF!"}},{"$f":"IF(V594>=#REF!,\"\",IF(V594<=#REF!,#REF!,#REF!))","v":{"$error":"#REF!"}},{"$f":"IF(V594>#REF!,\"\",#REF!)","v":{"$error":"#REF!"}},null,null,null,null,null,null,null,587]
[588,{"$f":"IF(A595>=#REF!,\"\",IF(A595<=#REF!,#REF!,#REF!))","v":{"$error":"#REF!"}},{"$f":"IF(A595>=#REF!,\"\",IF(A595<=#REF!,#REF!,#REF!))","v":{"$error":"#REF!"}},{"$f":"IF(A595>#REF!,\"\",#REF!)","v":{"$error":"#REF!"}},null,588,{"$f":"IF(F595>=#REF!,\"\",IF(F595<=#REF!,#REF!,#REF!))","v":{"$error":"#REF!"}},{"$f":"IF(F595>=#REF!,\"\",IF(F595<=#REF!,#REF!,#REF!))","v":{"$error":"#REF!"}},{"$f":"IF(F595>#REF!,\"\",PMT(#REF!/12,#REF!,-#REF!))","v":{"$error":"#REF!"}},null,null,null,null,588,{"$f":"IF(N595>#REF!,\"\",$L$7)","v":{"$error":"#REF!"}},{"$f":"IF(N595>=#REF!,\"\",IF(N595<=#REF!,#REF!,#REF!))","v":{"$error":"#REF!"}},{"$f":"IF(N595>#REF!,\"\",#REF!)","v":{"$error":"#REF!"}},null,null,null,null,588,{"$f":"IF(V595>#REF!,\"\",$T$7)","v":{"$error":"#REF!"}},{"$f":"IF(V595>=#REF!,\"\",IF(V595<=#REF!,#REF!,#REF!))","v":{"$error":"#REF!"}},{"$f":"IF(V595>#REF!,\"\",#REF!)","v":{"$error":"#REF!"}},null,null,null,null,null,null,null,588]
[589,{"$f":"IF(A596>=#REF!,\"\",IF(A596<=#REF!,#REF!,#REF!))","v":{"$error":"#REF!"}},{"$f":"IF(A596>=#REF!,\"\",IF(A596<=#REF!,#REF!,#REF!))","v":{"$error":"#REF!"}},{"$f":"IF(A596>#REF!,\"\",#REF!)","v":{"$error":"#REF!"}},null,589,{"$f":"IF(F596>=#REF!,\"\",IF(F596<=#REF!,#REF!,#REF!))","v":{"$error":"#REF!"}},{"$f":"IF(F596>=#REF!,\"\",IF(F596<=#REF!,#REF!,#REF!))","v":{"$error":"#REF!"}},{"$f":"IF(F596>#REF!,\"\",PMT(#REF!/12,#REF!,-#REF!))","v":{"$error":"#REF!"}},null,null,null,null,589,{"$f":"IF(N596>#REF!,\"\",$L$7)","v":{"$error":"#REF!"}},{"$f":"IF(N596>=#REF!,\"\",IF(N596<=#REF!,#REF!,#REF!))","v":{"$error":"#REF!"}},{"$f":"IF(N596>#REF!,\"\",#REF!)","v":{"$error":"#REF!"}},null,null,null,null,589,{"$f":"IF(V596>#REF!,\"\",$T$7)","v":{"$error":"#REF!"}},{"$f":"IF(V596>=#REF!,\"\",IF(V596<=#REF!,#REF!,#REF!))","v":{"$error":"#REF!"}},{"$f":"IF(V596>#REF!,\"\",#REF!)","v":{"$error":"#REF!"}},null,null,null,null,null,null,null,589]
[590,{"$f":"IF(A597>=#REF!,\"\",IF(A597<=#REF!,#REF!,#REF!))","v":{"$error":"#REF!"}},{"$f":"IF(A597>=#REF!,\"\",IF(A597<=#REF!,#REF!,#REF!))","v":{"$error":"#REF!"}},{"$f":"IF(A597>#REF!,\"\",#REF!)","v":{"$error":"#REF!"}},null,590,{"$f":"IF(F597>=#REF!,\"\",IF(F597<=#REF!,#REF!,#REF!))","v":{"$error":"#REF!"}},{"$f":"IF(F597>=#REF!,\"\",IF(F597<=#REF!,#REF!,#REF!))","v":{"$error":"#REF!"}},{"$f":"IF(F597>#REF!,\"\",PMT(#REF!/12,#REF!,-#REF!))","v":{"$error":"#REF!"}},null,null,null,null,590,{"$f":"IF(N597>#REF!,\"\",$L$7)","v":{"$error":"#REF!"}},{"$f":"IF(N597>=#REF!,\"\",IF(N597<=#REF!,#REF!,#REF!))","v":{"$error":"#REF!"}},{"$f":"IF(N597>#REF!,\"\",#REF!)","v":{"$error":"#REF!"}},null,null,null,null,590,{"$f":"IF(V597>#REF!,\"\",$T$7)","v":{"$error":"#REF!"}},{"$f":"IF(V597>=#REF!,\"\",IF(V597<=#REF!,#REF!,#REF!))","v":{"$error":"#REF!"}},{"$f":"IF(V597>#REF!,\"\",#REF!)","v":{"$error":"#REF!"}},null,null,null,null,null,null,null,590]
[591,{"$f":"IF(A598>=#REF!,\"\",IF(A598<=#REF!,#REF!,#REF!))","v":{"$error":"#REF!"}},{"$f":"IF(A598>=#REF!,\"\",IF(A598<=#REF!,#REF!,#REF!))","v":{"$error":"#REF!"}},{"$f":"IF(A598>#REF!,\"\",#REF!)","v":{"$error":"#REF!"}},null,591,{"$f":"IF(F598>=#REF!,\"\",IF(F598<=#REF!,#REF!,#REF!))","v":{"$error":"#REF!"}},{"$f":"IF(F598>=#REF!,\"\",IF(F598<=#REF!,#REF!,#REF!))","v":{"$error":"#REF!"}},{"$f":"IF(F598>#REF!,\"\",PMT(#REF!/12,#REF!,-#REF!))","v":{"$error":"#REF!"}},null,null,null,null,591,{"$f":"IF(N598>#REF!,\"\",$L$7)","v":{"$error":"#REF!"}},{"$f":"IF(N598>=#REF!,\"\",IF(N598<=#REF!,#REF!,#REF!))","v":{"$error":"#REF!"}},{"$f":"IF(N598>#REF!,\"\",#REF!)","v":{"$error":"#REF!"}},null,null,null,null,591,{"$f":"IF(V598>#REF!,\"\",$T$7)","v":{"$error":"#REF!"}},{"$f":"IF(V598>=#REF!,\"\",IF(V598<=#REF!,#REF!,#REF!))","v":{"$error":"#REF!"}},{"$f":"IF(V598>#REF!,\"\",#REF!)","v":{"$error":"#REF!"}},null,null,null,null,null,null,null,591]
[592,{"$f":"IF(A599>=#REF!,\"\",IF(A599<=#REF!,#REF!,#REF!))","v":{"$error":"#REF!"}},{"$f":"IF(A599>=#REF!,\"\",IF(A599<=#REF!,#REF!,#REF!))","v":{"$error":"#REF!"}},{"$f":"IF(A599>#REF!,\"\",#REF!)","v":{"$error":"#REF!"}},null,592,{"$f":"IF(F599>=#REF!,\"\",IF(F599<=#REF!,#REF!,#REF!))","v":{"$error":"#REF!"}},{"$f":"IF(F599>=#REF!,\"\",IF(F599<=#REF!,#REF!,#REF!))","v":{"$error":"#REF!"}},{"$f":"IF(F599>#REF!,\"\",PMT(#REF!/12,#REF!,-#REF!))","v":{"$error":"#REF!"}},null,null,null,null,592,{"$f":"IF(N599>#REF!,\"\",$L$7)","v":{"$error":"#REF!"}},{"$f":"IF(N599>=#REF!,\"\",IF(N599<=#REF!,#REF!,#REF!))","v":{"$error":"#REF!"}},{"$f":"IF(N599>#REF!,\"\",#REF!)","v":{"$error":"#REF!"}},null,null,null,null,592,{"$f":"IF(V599>#REF!,\"\",$T$7)","v":{"$error":"#REF!"}},{"$f":"IF(V599>=#REF!,\"\",IF(V599<=#REF!,#REF!,#REF!))","v":{"$error":"#REF!"}},{"$f":"IF(V599>#REF!,\"\",#REF!)","v":{"$error":"#REF!"}},null,null,null,null,null,null,null,592]
[593,{"$f":"IF(A600>=#REF!,\"\",IF(A600<=#REF!,#REF!,#REF!))","v":{"$error":"#REF!"}},{"$f":"IF(A600>=#REF!,\"\",IF(A600<=#REF!,#REF!,#REF!))","v":{"$error":"#REF!"}},{"$f":"IF(A600>#REF!,\"\",#REF!)","v":{"$error":"#REF!"}},null,593,{"$f":"IF(F600>=#REF!,\"\",IF(F600<=#REF!,#REF!,#REF!))","v":{"$error":"#REF!"}},{"$f":"IF(F600>=#REF!,\"\",IF(F600<=#REF!,#REF!,#REF!))","v":{"$error":"#REF!"}},{"$f":"IF(F600>#REF!,\"\",PMT(#REF!/12,#REF!,-#REF!))","v":{"$error":"#REF!"}},null,null,null,null,593,{"$f":"IF(N600>#REF!,\"\",$L$7)","v":{"$error":"#REF!"}},{"$f":"IF(N600>=#REF!,\"\",IF(N600<=#REF!,#REF!,#REF!))","v":{"$error":"#REF!"}},{"$f":"IF(N600>#REF!,\"\",#REF!)","v":{"$error":"#REF!"}},null,null,null,null,593,{"$f":"IF(V600>#REF!,\"\",$T$7)","v":{"$error":"#REF!"}},{"$f":"IF(V600>=#REF!,\"\",IF(V600<=#REF!,#REF!,#REF!))","v":{"$error":"#REF!"}},{"$f":"IF(V600>#REF!,\"\",#REF!)","v":{"$error":"#REF!"}},null,null,null,null,null,null,null,593]
[594,{"$f":"IF(A601>=#REF!,\"\",IF(A601<=#REF!,#REF!,#REF!))","v":{"$error":"#REF!"}},{"$f":"IF(A601>=#REF!,\"\",IF(A601<=#REF!,#REF!,#REF!))","v":{"$error":"#REF!"}},{"$f":"IF(A601>#REF!,\"\",#REF!)","v":{"$error":"#REF!"}},null,594,{"$f":"IF(F601>=#REF!,\"\",IF(F601<=#REF!,#REF!,#REF!))","v":{"$error":"#REF!"}},{"$f":"IF(F601>=#REF!,\"\",IF(F601<=#REF!,#REF!,#REF!))","v":{"$error":"#REF!"}},{"$f":"IF(F601>#REF!,\"\",PMT(#REF!/12,#REF!,-#REF!))","v":{"$error":"#REF!"}},null,null,null,null,594,{"$f":"IF(N601>#REF!,\"\",$L$7)","v":{"$error":"#REF!"}},{"$f":"IF(N601>=#REF!,\"\",IF(N601<=#REF!,#REF!,#REF!))","v":{"$error":"#REF!"}},{"$f":"IF(N601>#REF!,\"\",#REF!)","v":{"$error":"#REF!"}},null,null,null,null,594,{"$f":"IF(V601>#REF!,\"\",$T$7)","v":{"$error":"#REF!"}},{"$f":"IF(V601>=#REF!,\"\",IF(V601<=#REF!,#REF!,#REF!))","v":{"$error":"#REF!"}},{"$f":"IF(V601>#REF!,\"\",#REF!)","v":{"$error":"#REF!"}},null,null,null,null,null,null,null,594]
[595,{"$f":"IF(A602>=#REF!,\"\",IF(A602<=#REF!,#REF!,#REF!))","v":{"$error":"#REF!"}},{"$f":"IF(A602>=#REF!,\"\",IF(A602<=#REF!,#REF!,#REF!))","v":{"$error":"#REF!"}},{"$f":"IF(A602>#REF!,\"\",#REF!)","v":{"$error":"#REF!"}},null,595,{"$f":"IF(F602>=#REF!,\"\",IF(F602<=#REF!,#REF!,#REF!))","v":{"$error":"#REF!"}},{"$f":"IF(F602>=#REF!,\"\",IF(F602<=#REF!,#REF!,#REF!))","v":{"$error":"#REF!"}},{"$f":"IF(F602>#REF!,\"\",PMT(#REF!/12,#REF!,-#REF!))","v":{"$error":"#REF!"}},null,null,null,null,595,{"$f":"IF(N602>#REF!,\"\",$L$7)","v":{"$error":"#REF!"}},{"$f":"IF(N602>=#REF!,\"\",IF(N602<=#REF!,#REF!,#REF!))","v":{"$error":"#REF!"}},{"$f":"IF(N602>#REF!,\"\",#REF!)","v":{"$error":"#REF!"}},null,null,null,null,595,{"$f":"IF(V602>#REF!,\"\",$T$7)","v":{"$error":"#REF!"}},{"$f":"IF(V602>=#REF!,\"\",IF(V602<=#REF!,#REF!,#REF!))","v":{"$error":"#REF!"}},{"$f":"IF(V602>#REF!,\"\",#REF!)","v":{"$error":"#REF!"}},null,null,null,null,null,null,null,595]
[596,{"$f":"IF(A603>=#REF!,\"\",IF(A603<=#REF!,#REF!,#REF!))","v":{"$error":"#REF!"}},{"$f":"IF(A603>=#REF!,\"\",IF(A603<=#REF!,#REF!,#REF!))","v":{"$error":"#REF!"}},{"$f":"IF(A603>#REF!,\"\",#REF!)","v":{"$error":"#REF!"}},null,596,{"$f":"IF(F603>=#REF!,\"\",IF(F603<=#REF!,#REF!,#REF!))","v":{"$error":"#REF!"}},{"$f":"IF(F603>=#REF!,\"\",IF(F603<=#REF!,#REF!,#REF!))","v":{"$error":"#REF!"}},{"$f":"IF(F603>#REF!,\"\",PMT(#REF!/12,#REF!,-#REF!))","v":{"$error":"#REF!"}},null,null,null,null,596,{"$f":"IF(N603>#REF!,\"\",$L$7)","v":{"$error":"#REF!"}},{"$f":"IF(N603>=#REF!,\"\",IF(N603<=#REF!,#REF!,#REF!))","v":{"$error":"#REF!"}},{"$f":"IF(N603>#REF!,\"\",#REF!)","v":{"$error":"#REF!"}},null,null,null,null,596,{"$f":"IF(V603>#REF!,\"\",$T$7)","v":{"$error":"#REF!"}},{"$f":"IF(V603>=#REF!,\"\",IF(V603<=#REF!,#REF!,#REF!))","v":{"$error":"#REF!"}},{"$f":"IF(V603>#REF!,\"\",#REF!)","v":{"$error":"#REF!"}},null,null,null,null,null,null,null,596]
[597,{"$f":"IF(A604>=#REF!,\"\",IF(A604<=#REF!,#REF!,#REF!))","v":{"$error":"#REF!"}},{"$f":"IF(A604>=#REF!,\"\",IF(A604<=#REF!,#REF!,#REF!))","v":{"$error":"#REF!"}},{"$f":"IF(A604>#REF!,\"\",#REF!)","v":{"$error":"#REF!"}},null,597,{"$f":"IF(F604>=#REF!,\"\",IF(F604<=#REF!,#REF!,#REF!))","v":{"$error":"#REF!"}},{"$f":"IF(F604>=#REF!,\"\",IF(F604<=#REF!,#REF!,#REF!))","v":{"$error":"#REF!"}},{"$f":"IF(F604>#REF!,\"\",PMT(#REF!/12,#REF!,-#REF!))","v":{"$error":"#REF!"}},null,null,null,null,597,{"$f":"IF(N604>#REF!,\"\",$L$7)","v":{"$error":"#REF!"}},{"$f":"IF(N604>=#REF!,\"\",IF(N604<=#REF!,#REF!,#REF!))","v":{"$error":"#REF!"}},{"$f":"IF(N604>#REF!,\"\",#REF!)","v":{"$error":"#REF!"}},null,null,null,null,597,{"$f":"IF(V604>#REF!,\"\",$T$7)","v":{"$error":"#REF!"}},{"$f":"IF(V604>=#REF!,\"\",IF(V604<=#REF!,#REF!,#REF!))","v":{"$error":"#REF!"}},{"$f":"IF(V604>#REF!,\"\",#REF!)","v":{"$error":"#REF!"}},null,null,null,null,null,null,null,597]
[598,{"$f":"IF(A605>=#REF!,\"\",IF(A605<=#REF!,#REF!,#REF!))","v":{"$error":"#REF!"}},{"$f":"IF(A605>=#REF!,\"\",IF(A605<=#REF!,#REF!,#REF!))","v":{"$error":"#REF!"}},{"$f":"IF(A605>#REF!,\"\",#REF!)","v":{"$error":"#REF!"}},null,598,{"$f":"IF(F605>=#REF!,\"\",IF(F605<=#REF!,#REF!,#REF!))","v":{"$error":"#REF!"}},{"$f":"IF(F605>=#REF!,\"\",IF(F605<=#REF!,#REF!,#REF!))","v":{"$error":"#REF!"}},{"$f":"IF(F605>#REF!,\"\",PMT(#REF!/12,#REF!,-#REF!))","v":{"$error":"#REF!"}},null,null,null,null,598,{"$f":"IF(N605>#REF!,\"\",$L$7)","v":{"$error":"#REF!"}},{"$f":"IF(N605>=#REF!,\"\",IF(N605<=#REF!,#REF!,#REF!))","v":{"$error":"#REF!"}},{"$f":"IF(N605>#REF!,\"\",#REF!)","v":{"$error":"#REF!"}},null,null,null,null,598,{"$f":"IF(V605>#REF!,\"\",$T$7)","v":{"$error":"#REF!"}},{"$f":"IF(V605>=#REF!,\"\",IF(V605<=#REF!,#REF!,#REF!))","v":{"$error":"#REF!"}},{"$f":"IF(V605>#REF!,\"\",#REF!)","v":{"$error":"#REF!"}},null,null,null,null,null,null,null,598]
[599,{"$f":"IF(A606>=#REF!,\"\",IF(A606<=#REF!,#REF!,#REF!))","v":{"$error":"#REF!"}},{"$f":"IF(A606>=#REF!,\"\",IF(A606<=#REF!,#REF!,#REF!))","v":{"$error":"#REF!"}},{"$f":"IF(A606>#REF!,\"\",#REF!)","v":{"$error":"#REF!"}},null,599,{"$f":"IF(F606>=#REF!,\"\",IF(F606<=#REF!,#REF!,#REF!))","v":{"$error":"#REF!"}},{"$f":"IF(F606>=#REF!,\"\",IF(F606<=#REF!,#REF!,#REF!))","v":{"$error":"#REF!"}},{"$f":"IF(F606>#REF!,\"\",PMT(#REF!/12,#REF!,-#REF!))","v":{"$error":"#REF!"}},null,null,null,null,599,{"$f":"IF(N606>#REF!,\"\",$L$7)","v":{"$error":"#REF!"}},{"$f":"IF(N606>=#REF!,\"\",IF(N606<=#REF!,#REF!,#REF!))","v":{"$error":"#REF!"}},{"$f":"IF(N606>#REF!,\"\",#REF!)","v":{"$error":"#REF!"}},null,null,null,null,599,{"$f":"IF(V606>#REF!,\"\",$T$7)","v":{"$error":"#REF!"}},{"$f":"IF(V606>=#REF!,\"\",IF(V606<=#REF!,#REF!,#REF!))","v":{"$error":"#REF!"}},{"$f":"IF(V606>#REF!,\"\",#REF!)","v":{"$error":"#REF!"}},null,null,null,null,null,null,null,599]
[600,{"$f":"IF(A607>=#REF!,\"\",IF(A607<=#REF!,#REF!,#REF!))","v":{"$error":"#REF!"}},{"$f":"IF(A607>=#REF!,\"\",IF(A607<=#REF!,#REF!,#REF!))","v":{"$error":"#REF!"}},{"$f":"IF(A607>#REF!,\"\",#REF!)","v":{"$error":"#REF!"}},null,600,{"$f":"IF(F607>=#REF!,\"\",IF(F607<=#REF!,#REF!,#REF!))","v":{"$error":"#REF!"}},{"$f":"IF(F607>=#REF!,\"\",IF(F607<=#REF!,#REF!,#REF!))","v":{"$error":"#REF!"}},{"$f":"IF(F607>#REF!,\"\",PMT(#REF!/12,#REF!,-#REF!))","v":{"$error":"#REF!"}},null,null,null,null,600,{"$f":"IF(N607>#REF!,\"\",$L$7)","v":{"$error":"#REF!"}},{"$f":"IF(N607>=#REF!,\"\",IF(N607<=#REF!,#REF!,#REF!))","v":{"$error":"#REF!"}},{"$f":"IF(N607>#REF!,\"\",#REF!)","v":{"$error":"#REF!"}},null,null,null,null,600,{"$f":"IF(V607>#REF!,\"\",$T$7)","v":{"$error":"#REF!"}},{"$f":"IF(V607>=#REF!,\"\",IF(V607<=#REF!,#REF!,#REF!))","v":{"$error":"#REF!"}},{"$f":"IF(V607>#REF!,\"\",#REF!)","v":{"$error":"#REF!"}},null,null,null,null,null,null,null,600]